Workbook

Sheet INDEX
B2: Aquantis Table of Contents | H2: Go to sheet | I2: Hide | J2: Show
C3: Index | D3: INDEX | J3: x
B4: 1 | C4: Introduction | D4: 1.0 Introduction | H4: =IF(D4="","",HYPERLINK("["&(MID(CELL("filename"),SEARCH("[",CELL("filename"))+1, SEARCH("]",CELL("filename"))-SEARCH("[",CELL("filename"))-1))&"]'"&(IF(D4=0,"",D4))&"'!A1", "Go to tab")) -> Go to tab | J4: =IF(D3="","",IF(I4="x","","x")) -> x
D5: 1.2 Input | H5: Go to tab | J5: =IF(D5="","",IF(I5="x","","x")) -> x
D6: 1.2 Variables | H6: Go to tab | J6: x
D7: 1.3 Dropdown | H7: Go to tab | J7: x
B8: 2 | C8: Results | D8: 2.0 Results | H8: Go to tab | J8: x
D9: CB_DATA_ | H9: Go to tab | I9: x
D10: Pie Charts | H10: Go to tab | J10: x
D11: Risked_Results | H11: Go to tab | I11: x
D12: 2.1 Results Risked | H12: =IF(D12="","",HYPERLINK("["&(MID(CELL("filename"),SEARCH("[",CELL("filename"))+1, SEARCH("]",CELL("filename"))-SEARCH("[",CELL("filename"))-1))&"]'"&(IF(D12=0,"",D12))&"'!A1", "Go to tab")) -> Go to tab | J12: =IF(D12="","",IF(I12="x","","x")) -> x
D13: 2.2 HistoricGraphs | H13: =IF(D13="","",HYPERLINK("["&(MID(CELL("filename"),SEARCH("[",CELL("filename"))+1, SEARCH("]",CELL("filename"))-SEARCH("[",CELL("filename"))-1))&"]'"&(IF(D13=0,"",D13))&"'!A1", "Go to tab")) -> Go to tab | I13: x | J13: =IF(D13="","",IF(I13="x","","x")) -> 
D14: 2.3 COE_History | H14: =IF(D14="","",HYPERLINK("["&(MID(CELL("filename"),SEARCH("[",CELL("filename"))+1, SEARCH("]",CELL("filename"))-SEARCH("[",CELL("filename"))-1))&"]'"&(IF(D14=0,"",D14))&"'!A1", "Go to tab")) -> Go to tab | I14: x | J14: =IF(D14="","",IF(I14="x","","x")) -> 
D15: 2.4 Quick COE | H15: =IF(D15="","",HYPERLINK("["&(MID(CELL("filename"),SEARCH("[",CELL("filename"))+1, SEARCH("]",CELL("filename"))-SEARCH("[",CELL("filename"))-1))&"]'"&(IF(D15=0,"",D15))&"'!A1", "Go to tab")) -> Go to tab | J15: =IF(D15="","",IF(I15="x","","x")) -> x
B16: 3 | C16: CAPEX | D16: 2.5 Cash Flow | H16: Go to tab | I16: x
D17: 3.0 Summary CAPEX | H17: Go to tab | J17: x
D18: Cost Saving Programs | H18: Go to tab | J18: x
D19: 3.1 Summary Risked CAPEX | H19: Go to tab | I19: x
D20: 3.2 4 ROTOR | H20: Go to tab | J20: x
D21: 3.3 PDR | H21: Go to tab | J21: x
D22: 3.4 2 ROTOR | H22: Go to tab | J22: x
D23: 3.5 Assembly cost | H23: Go to tab | J23: x
D24: 3.6 Mooring Lines & Attachments | H24: Go to tab | J24: x
D25: 3.7 Grid Connect | H25: Go to tab | J25: x
B26: 4 | C26: OPEX | D26: 3.8 Installation Cost | H26: Go to tab | J26: x
D27: 3.9 Decommissioning Cost | H27: Go to tab | J27: x
D28: 4.0 Summary OPEX | H28: Go to tab | J28: x
D29: 4.1 O&M | H29: Go to tab | J29: x
D30: 4.2 StaticOM | H30: Go to tab | J30: x
D31: 4.3 Component Data | H31: Go to tab | J31: x
B32: 5 | C32: Energy Model | D32: 4.4 Lease Cost | H32: Go to tab | J32: x
D33: 4.5 Liquidated Damages | H33: Go to tab | J33: x
D34: 5.0 Summary AEP | H34: Go to tab | J34: x
D35: 5.1 RotorPowerCurves | H35: Go to tab | J35: x
D36: 5.2 DrivetrainLosses | H36: Go to tab | J36: x
D37: 5.3 TurbinePowerCurve | H37: Go to tab | J37: x
D38: 5.4 CurrentResource | H38: Go to tab | J38: x
D39: 5.5 EnergyLosses | H39: Go to tab | J39: =IF(D39="","",IF(I39="x","","x")) -> x
D40: 5.6 AEP | H40: Go to tab | J40: x
D41: Carbon | H41: Go to tab | J41: x
B42: 6 | C42: Financial | D42: 6.0 Financial | H42: Go to tab | J42: x
B43: 7 | C43: Appendix | D43: 7.0 Extras | H43: Go to tab | J43: x
D44: 7.1 Actionlist | H44: =IF(D44="","",HYPERLINK("["&(MID(CELL("filename"),SEARCH("[",CELL("filename"))+1, SEARCH("]",CELL("filename"))-SEARCH("[",CELL("filename"))-1))&"]'"&(IF(D44=0,"",D44))&"'!A1", "Go to tab")) -> Go to tab | J44: =IF(D44="","",IF(I44="x","","x")) -> x
D45: 7.2 Mooring Installation costs | H45: Go to tab | I45: x
D46: x3.2Base(Sep28)CBM4000Metric | H46: Go to tab | I46: x
D47: x3.3Capex_1(Sep20)CBM4000Metric | H47: Go to tab | I47: x
D48: 7.3 Old information --> | H48: Go to tab | I48: x
D49: 3.2x Base(Sep21)CBM4000Metric | H49: Go to tab | I49: x
D50: Base (Aug25) CBM 4000 Metric | H50: Go to tab | I50: x
D51: Capex_1 (Aug25) CBM 4000 Metric | H51: Go to tab | I51: x
D52: Capex_2 (Aug25) CBM 4000 Metric | I52: x
D53: Base (Sep19) CBM 4000 Metric | H53: =IF(D53="","",HYPERLINK("["&(MID(CELL("filename"),SEARCH("[",CELL("filename"))+1, SEARCH("]",CELL("filename"))-SEARCH("[",CELL("filename"))-1))&"]'"&(IF(D53=0,"",D53))&"'!A1", "Go to tab")) -> Go to tab | I53: x | J53: =IF(D53="","",IF(I53="x","","x")) -> 
H54: =IF(D54="","",HYPERLINK("["&(MID(CELL("filename"),SEARCH("[",CELL("filename"))+1, SEARCH("]",CELL("filename"))-SEARCH("[",CELL("filename"))-1))&"]'"&(IF(D54=0,"",D54))&"'!A1", "Go to tab")) ->  | J54: =IF(D54="","",IF(I54="x","","x")) -> 
J79: =IF(D79="","",IF(I79="x","","x")) -> 
J111: =IF(D111="","",IF(I111="x","","x")) -> 
J112: =IF(D112="","",IF(I112="x","","x")) -> 
J113: =IF(D113="","",IF(I113="x","","x")) -> 
J114: =IF(D114="","",IF(I114="x","","x")) -> 

Sheet 1.0 Introduction
B2: Cost of Energy Model
B3: Aquantis
B5: Introduction
B6: The Cost of Energy (COE) Model is used to calculate the cost of energy per unit of energy for a given configuration of the underwater turbine.
B7: The unit for COE is cents/kWh as a levelized cost over the lifetime of the asset.
B8: The calculation includes upfront costs, in addition to the operating costs of the power plant.
B10: Color codes:
C11: Input value for user
C12: Calculated output which may be used in other tabs
C13: Value comes from other tabs
C14: Risked value
B16: Control menu
B17: Show / hide tabs
B18: Action list

Sheet 1.2 Input
C1: Show or hide comments with [+] | E1: Show or hide comments with [+]
B2: Cost of Energy Model
B3: Aquantis | C3: COE - Quick Calculation: | E3: COE - Quick Calculation:
C4: ='2.0 Results'!D35 -> 8 | E4: =_B0_COE -> 11.01402292 | G4: =_C1_COE -> 17.71507401 | I4: =_C2_COE -> 10.10217141
B5: User Input Page | C5: TARGET | E5: 4 ROTOR | G5: PDR | I5: 2 ROTOR | K5: General comments
B7: Turbine configuration:
B8: Rated power per rotor [kW] | C8: 1000 | E8: 1000 | G8: 800 | I8: 1175
B9: # of rotors per C-Plane | C9: 2 | E9: 4 | G9: 4 | I9: 2
B10: --> Rated Power C-Plane [kW] | C10: =C8*C9 -> 2000 | E10: =E8*E9 -> 4000 | G10: =G8*G9 -> 3200 | I10: =I8*I9 -> 2350
B12: # of C-Planes per farm | C12: 50 | E12: 25 | G12: 32 | I12: 43 | K12: <-- We could automate this to match Round(100MW)
B13: --> Rated Power Total Farm [kW] | C13: =C10*C12 -> 100000 | E13: =E10*E12 -> 100000 | G13: =G10*G12 -> 102400 | I13: =I10*I12 -> 101050
B14: --> Rated Power Total Farm [MW] | C14: =C13/1000 -> 100 | E14: =E13/1000 -> 100 | G14: =G13/1000 -> 102.4 | I14: =I13/1000 -> 101.05
B16: Drivetrain | E16: Hydraulic | G16: Hydraulic | I16: Hydraulic
B18: Pump type (if hydraulic drivetrain) | E18: =IF(E16="Hydraulic",IF(E8=1000,"2xCBM 4000",IF(E8=800,"CBM 4000",IF(E8=1300,"CBM 6000","Check Rotor Power"))),"N/A") -> 2xCBM 4000 | G18: =IF(G16="Hydraulic",IF(G8=800,"CBM 4000",IF(G8=1300,"CBM 6000","Check Rotor Power")),"N/A") -> CBM 4000 | I18: =IF(I16="Hydraulic",IF(I8=1000,"2xCBM 4000",IF(I8=800,"CBM 4000",IF(I8=1300,"CBM 6000","Check Rotor Power"))),"N/A") -> Check Rotor Power | K18: (this is calculated based on rated power per rotor)
B20: Generator RPM | E20: Variable speed | G20: Variable speed | I20: Variable speed
B22: Drivetrain efficiency model | D22: =VLOOKUP(C22,OP_DTEfficiency_D,2,0) ->  | E22: Based on power output | F22: =VLOOKUP(E22,OP_DTEfficiency_D,2,0) -> The efficiency of the drivetrain varies depending on the power loading of the drivetrain. By using this option, the effiency of the drivetrain for a specific power loading is used. E.g. At very low power outputs the efficiency is normally pretty low, whilst at high power outputs the efficiency of a drivetrain is normally high. | G22: Based on power output | H22: =VLOOKUP(G22,OP_DTEfficiency_D,2,0) -> The efficiency of the drivetrain varies depending on the power loading of the drivetrain. By using this option, the effiency of the drivetrain for a specific power loading is used. E.g. At very low power outputs the efficiency is normally pretty low, whilst at high power outputs the efficiency of a drivetrain is normally high. | I22: Based on power output | J22: =VLOOKUP(I22,OP_DTEfficiency_D,2,0) -> The efficiency of the drivetrain varies depending on the power loading of the drivetrain. By using this option, the effiency of the drivetrain for a specific power loading is used. E.g. At very low power outputs the efficiency is normally pretty low, whilst at high power outputs the efficiency of a drivetrain is normally high.
B24: Drivetrain efficiency: | E24: Depending on which efficiency model is selected (previous option), the efficiency is calculated with the following inputs:
B25: Drivetrain: | E25: =E16 -> Hydraulic | G25: =G16 -> Hydraulic | I25: =I16 -> Hydraulic
B26: GenRPM | E26: =E20 -> Variable speed | G26: =G20 -> Variable speed | I26: =I20 -> Variable speed
B27: If fixed | E27: =IF(E16="Hydraulic",85%,IF(E16="Mechanical",93%,"Check Drivetrain Type")) -> 0.85 | G27: =IF(G16="Hydraulic",85%,IF(G16="Mechanical",93%,"Check Drivetrain Type")) -> 0.85 | I27: =IF(I16="Hydraulic",85%,IF(I16="Mechanical",93%,"Check Drivetrain Type")) -> 0.85
B28: If variable | E28: =IF(E20="Variable speed","VS",IF(E20="Fixed speed","FS",IF(E20="Fixed with slip","FSLP","Check GenRPM"))) -> VS | G28: =IF(G20="Variable speed","VS",IF(G20="Fixed speed","FS",IF(G20="Fixed with slip","FSLP","Check GenRPM"))) -> VS | I28: =IF(I20="Variable speed","VS",IF(I20="Fixed speed","FS",IF(I20="Fixed with slip","FSLP","Check GenRPM"))) -> VS
B30: Value in use: | E30: =IF(E22="Fixed efficiency",E27,IF(E22="Based on power output",CONCATENATE(E25," ",E28),"Check Drivetrain Efficiency Model")) -> Hydraulic VS | G30: =IF(G22="Fixed efficiency",G27,IF(G22="Based on power output",CONCATENATE(G25," ",G28),"Check Drivetrain Efficiency Model")) -> Hydraulic VS | I30: =IF(I22="Fixed efficiency",I27,IF(I22="Based on power output",CONCATENATE(I25," ",I28),"Check Drivetrain Efficiency Model")) -> Hydraulic VS | K30: CALCULATED based on values above
B32: Rotor Power Curve: | E32: This is based on the options selected here, combined with available rotor power curves
B33: Rated Power per Rotor: | E33: =E8 -> 1000 | G33: =G8 -> 800 | I33: =I8 -> 1175
B34: Drivetrain: | E34: =E16 -> Hydraulic | G34: =G16 -> Hydraulic | I34: =I16 -> Hydraulic
B35: Drivetrain efficiency: | E35: =E28 -> VS | G35: =G28 -> VS | I35: =I28 -> VS
B36: Other?
B37: Auto select: | D37: =VLOOKUP(C37,OP_RotorCurve_D,6,0) ->  | E37: =VLOOKUP(BaseRotor,OP_ROTOR_SELECTION,2,0) -> Nov 8 HY 1.0MW VS | F37: =VLOOKUP(E37,OP_RotorCurve_D,6,0) -> Steve Willets input on 11/8/2011 | G37: =VLOOKUP(Conf1Rotor,OP_ROTOR_SELECTION,2,0) -> HY 0.8 MW VS | H37: =VLOOKUP(G37,OP_RotorCurve_D,6,0) -> 0.8 MW variable speed rotor curve | I37: HY 1.3 MW 45.5 | J37: =VLOOKUP(I37,OP_RotorCurve_D,6,0) -> 1.3 MW ARL 45.5m
B38: Manual over-ride? | D38: =VLOOKUP(C38,OP_RotorCurve_D,6,0) ->  | E38: HY 1.0 MW VS Jan27,12 | F38: =VLOOKUP(E38,OP_RotorCurve_D,6,0) -> A new turbine curve received on january 27, 2012. Uses a more efficient rotor, and is cheaper to produce. | G38: Sept1 HY 0.8MW VS | H38: =VLOOKUP(G38,OP_RotorCurve_D,6,0) -> September 1 version of the Hydraulic Drivetrain, 800kW, variable speed. C_F ~70% | I38: Auto | J38: =VLOOKUP(I38,OP_RotorCurve_D,6,0) -> Selection of rotor curve is done automatically (default) | K38: User can select a manual version to override the auto selected. It will however show up as red.
B40: Value in use: | E40: =IF(E38="Auto",E37,E38) -> HY 1.0 MW VS Jan27,12 | G40: =IF(G38="Auto",G37,G38) -> Sept1 HY 0.8MW VS | I40: =IF(I38="Auto",I37,I38) -> HY 1.3 MW 45.5
B41: Curve name: | E41: =VLOOKUP(E40,OP_RotorCurve_D,5,0) -> 1200KW_Jan27 | G41: =VLOOKUP(G40,OP_RotorCurve_D,5,0) -> 950KW_VS_3 | I41: =VLOOKUP(I40,OP_RotorCurve_D,5,0) -> 45P5D_3HD_2B_TSR8P0_CR | K41: (this is the name registered for the specific rotor power curve)
B44: Mooring | E44: Linked and based on input data above in connection with Allie Cribbs calculation information: | G44: Linked and based on input data abo ve in connection with Allie Cribbs calculation information: | I44: Linked and based on input data abo ve in connection with Allie Cribbs calculation information:
B45: Pump: | E45: =E18 -> 2xCBM 4000 | G45: =G18 -> CBM 4000 | I45: =I18 -> Check Rotor Power | K45: (based on information above)
B46: # of rotors: | E46: =E9 -> 4 | G46: =G9 -> 4 | I46: =I9 -> 2
B47: # of aft anchors: | K47: (based on Allie Cribbs calculations)
B48: Aft anchor type:
B49: # forward anchors:
B50: Forward anchor type:
B52: OPEX
B54: Operations and Maintenance calculation method
B55: Crystal Ball or Lookup table | C55: Lookup Table | D55: =VLOOKUP(C55,OP_OMMethod_D,2,0) -> The current inputs are used to look up previous Crystal Ball run results in a table. This does not require having Crystal Ball installed. | E55: Lookup Table | F55: =VLOOKUP(E55,OP_OMMethod_D,2,0) -> The current inputs are used to look up previous Crystal Ball run results in a table. This does not require having Crystal Ball installed. | G55: Lookup Table | H55: =VLOOKUP(G55,OP_OMMethod_D,2,0) -> The current inputs are used to look up previous Crystal Ball run results in a table. This does not require having Crystal Ball installed. | I55: Lookup Table | J55: =VLOOKUP(I55,OP_OMMethod_D,2,0) -> The current inputs are used to look up previous Crystal Ball run results in a table. This does not require having Crystal Ball installed.
B56: Latest lookup results data (if used) | C56: =IF(C55="Lookup Table",_B0_OMDate,IF(C55="Crystal Ball","Today","Check input")) -> 2010-03-05 | E56: =IF(E55="Lookup Table",_B0_OMDate,IF(E55="Crystal Ball","Today","Check input")) -> 2010-03-05 | G56: =IF(G55="Lookup Table",_C1_OMDate,IF(G55="Crystal Ball","Today","Check input")) -> 2011-10-13 | I56: =IF(I55="Lookup Table",_C2_OMDate,IF(I55="Crystal Ball","Today","Check input")) -> 2012-03-05
C57: Target
B58: Energy estimation options:
B60: Cut-in and Cut-out
B61: Use Cut-in and Cut-out | E61: Yes | G61: Yes | I61: Yes
B62: Rotor curve (input) | E62: =E41 -> 1200KW_Jan27 | G62: =G41 -> 950KW_VS_3 | I62: =I41 -> 45P5D_3HD_2B_TSR8P0_CR
B63: Registered Cut-in | E63: =HLOOKUP(E62,InfoRotorPowerCurve,8,0) -> 1 | G63: =HLOOKUP(G62,InfoRotorPowerCurve,8,0) -> 1 | I63: =HLOOKUP(I62,InfoRotorPowerCurve,8,0) -> 1
B64: Registered Cut-out | E64: =HLOOKUP(E62,InfoRotorPowerCurve,9,0) -> 2.5 | G64: =HLOOKUP(G62,InfoRotorPowerCurve,9,0) -> 2.5 | I64: =HLOOKUP(I62,InfoRotorPowerCurve,9,0) -> 2.5
B66: Include dive down? | E66: Yes | G66: Yes | I66: Yes
B67: Dive down speed [m/s]: | E67: 1.6 | G67: 1.6 | I67: 1.6
B69: Energy Losses | D69: =VLOOKUP(C69,OP_EnergyLosses_D,2,0) ->  | E69: Med / 95% | F69: =VLOOKUP(E69,OP_EnergyLosses_D,2,0) -> Medium energy loss, 95% availability | G69: Med / 95% | H69: =VLOOKUP(G69,OP_EnergyLosses_D,2,0) -> Medium energy loss, 95% availability | I69: Med / 95% | J69: =VLOOKUP(I69,OP_EnergyLosses_D,2,0) -> Medium energy loss, 95% availability
B70: Energy Loss Percentage | E70: =_B0_EnergyLossPercentage -> 0.133 | G70: =_C1_EnergyLossPercentage -> 0.133 | H70: =_B0_EnergyLossPercentage -> 0.133 | I70: =_C2_EnergyLossPercentage -> 0.133
B71: Availability Loss Percentage | E71: =_B0_AvailabilityLossPercentage -> 0.05 | G71: =_C1_AvailabilityLossPercentage -> 0.05 | H71: =_B0_AvailabilityLossPercentage -> 0.05 | I71: =_C2_AvailabilityLossPercentage -> 0.05
B73: Current resource: | D73: =VLOOKUP(C73,OP_CurrentResource_D,2,0) -> 0 | E73: C-70 | F73: =VLOOKUP(E73,OP_CurrentResource_D,2,0) -> 0 | G73: C-70 | H73: =VLOOKUP(G73,OP_CurrentResource_D,2,0) -> 0 | I73: V-bar-66.2 | J73: =VLOOKUP(I73,OP_CurrentResource_D,2,0) -> 0
B76: Financial variables:
B78: Lifetime [years] | D78: =VLOOKUP(C78,OP_Lifetime_D,2,0) ->  | E78: 20 | F78: =VLOOKUP(E78,OP_Lifetime_D,2,0) -> The time period that the asset is paid down affects the Discount Rate used in the COE model. For 20 years DOE assumes 7.00 %, for 30 years we've calculated 5.44 %. | G78: 20 | H78: =VLOOKUP(G78,OP_Lifetime_D,2,0) -> The time period that the asset is paid down affects the Discount Rate used in the COE model. For 20 years DOE assumes 7.00 %, for 30 years we've calculated 5.44 %. | I78: 20 | J78: =VLOOKUP(I78,OP_Lifetime_D,2,0) -> The time period that the asset is paid down affects the Discount Rate used in the COE model. For 20 years DOE assumes 7.00 %, for 30 years we've calculated 5.44 %.
B80: COE Capital Recoery Factor (based on lifetime) | E80: =IF(E78=20,7%,IF(E78=30,5.44%,"Check lifetime")) -> 0.07 | G80: =IF(G78=20,7%,IF(G78=30,5.44%,"Check lifetime")) -> 0.07 | I80: =IF(I78=20,7%,IF(I78=30,5.44%,"Check lifetime")) -> 0.07
B81: Insurance, warranty and fees | E81: 0.01 | G81: 0.01 | I81: 0.01
B82: O&M tax benefit | E82: 0.4 | G82: 0.4 | I82: 0.4
B84: Gross margin Aquantis | E84: 0.28 | G84: 0.28 | I84: 0.28
B85: (on CAPEX elements)
B87: Assembly cost percentage | E87: 0.05 | G87: 0.05 | I87: 0.05
B88: (on CAPEX elements)
B90: Decommissioning cost percentage | E90: 0.03 | G90: 0.03 | I90: 0.03
B91: (on CAPEX elements) | E91: (currently not included) | G91: (currently not included) | I91: (currently not included)
B93: Quick results:
B95: COE | E95: =_B0_COE -> 11.01402292 | G95: =_C1_COE -> 17.71507401 | I95: =_C2_COE -> 10.10217141
B96: Power density | E96: =_B0_PowerDensity -> 2.482007779 | G96: =_C1_PowerDensity -> 1.546358414 | I96: =_C2_PowerDensity -> 3.500874177
B97: Energy density | E97: =_B0_EnergyDensity -> 3.262220349 | G97: =_C1_EnergyDensity -> 1.897024231 | I97: =_C2_EnergyDensity -> 9.102301513 | K97: ='3.4 2 ROTOR'!N10 -> 1353793
B99: Net AEP (per Rotor) | E99: =_B0_NetAEP -> 5257389.404 | G99: =_C1_NetAEP -> 3925660.108 | I99: =_C2_NetAEP -> 6110019.234
B100: Net Capacity Factor | E100: =_B0_NetCF -> 0.6001586078 | G100: =_C1_NetCF -> 0.5601683945 | I100: =_C2_NetCF -> 0.5936091746
B101: Capex per C-Plane ($) | E101: =_B0_CapexCPlane -> 24460146.2 | G101: =_C1_CapexCPlane -> 29852022.95 | I101: =_C2_CapexCPlane -> 13098862.9
B102: OPEX per C-Plane ($/yr) | E102: =_B0_OpexCPlane -> 359388.6 | G102: =_C1_OpexCPlane -> 393572.5384 | I102: =_C2_OpexCPlane -> 186580.2

Sheet 1.2 Variables
A1: 1 | B1: 2 | C1: 3 | D1: 4 | E1: 5 | F1: 6 | G1: 7 | H1: 8 | I1: 9 | J1: 10 | K1: 11 | L1: 12 | M1: 13 | N1: 14 | O1: 15 | P1: 16 | Q1: 17 | R1: 18
B2: Cost of Energy Model | E2: Naming: | H2: Create all names? | I2: FALSE | J2: If FALSE, only the current row will be created
B3: Aquantis | C3: Specific | E3: General variables - No add on to the variable name
E4: Specific variables - Add on C1_, C2_ or B0_ in front of the names
B5: Variable list | E5: NB: All automatically created names start with _ for easy deletion
H6: 4 ROTOR | K6: PDR | N6: 2 ROTOR
B7: Area | C7: Variable | D7: Type | E7: Description | F7: Options | G7: Format | H7: Name | I7: Value | J7: Link | K7: Name | L7: Value | M7: Link | N7: Name | O7: Value | P7: Link
B8: Configurations | C8: RatedTurbinePower | D8: Input | E8: The rated power in kW that the specific configuration has for each of the rotor / turbines on the C-Plane | G8: Specific | H8: _B0_RatedTurbinePower | I8: ='1.2 Input'!E8 -> 1000 | J8: =IF(I8="","",HYPERLINK("["&(MID(CELL("filename"),SEARCH("[",CELL("filename"))+1, SEARCH("]",CELL("filename"))-SEARCH("[",CELL("filename"))-1))&"]"&(IF(I8=0,"",DisplayFormula(I8))), "Go to cell")) -> Go to cell | K8: _C1_RatedTurbinePower | L8: ='1.2 Input'!G8 -> 800 | M8: =IF(L8="","",HYPERLINK("["&(MID(CELL("filename"),SEARCH("[",CELL("filename"))+1, SEARCH("]",CELL("filename"))-SEARCH("[",CELL("filename"))-1))&"]"&(IF(L8=0,"",DisplayFormula(L8))), "Go to cell")) -> Go to cell | N8: _C2_RatedTurbinePower | O8: ='1.2 Input'!I8 -> 1175 | P8: =IF(O8="","",HYPERLINK("["&(MID(CELL("filename"),SEARCH("[",CELL("filename"))+1, SEARCH("]",CELL("filename"))-SEARCH("[",CELL("filename"))-1))&"]"&(IF(O8=0,"",DisplayFormula(O8))), "Go to cell")) -> Go to cell
C9: NumRotors | D9: Option | E9: The user can select how many rotors each C-Plane should have. This number will update the CAPEX and Energy Calculations, in addition to many of the other values. | F9: 2 4 6 8 | G9: Specific | H9: _B0_NumRotors | I9: ='1.2 Input'!E9 -> 4 | J9: Go to cell | K9: _C1_NumRotors | L9: ='1.2 Input'!G9 -> 4 | M9: Go to cell | N9: _C2_NumRotors | O9: ='1.2 Input'!I9 -> 2 | P9: Go to cell
C10: NumCPlanes | D10: Input | E10: The user can put in any number of C-Planes to have in the farm. | G10: Specific | H10: _B0_NumCPlanes | I10: ='1.2 Input'!E12 -> 25 | J10: Go to cell | K10: _C1_NumCPlanes | L10: ='1.2 Input'!G12 -> 32 | M10: Go to cell | N10: _C2_NumCPlanes | O10: ='1.2 Input'!I12 -> 43 | P10: Go to cell
C11: RatedCPlanePower | D11: Calculated | E11: Rated power for a full Cplane | G11: Specific | H11: _B0_RatedCPlanePower | I11: ='1.2 Input'!E10 -> 4000 | J11: Go to cell | K11: _C1_RatedCPlanePower | L11: ='1.2 Input'!G10 -> 3200 | M11: Go to cell | N11: _C2_RatedCPlanePower | O11: ='1.2 Input'!I10 -> 2350 | P11: Go to cell
C12: Drivetrain | D12: Option | E12: The type of drivetrain that is used in the specific configuration | F12: Mechanical Hydraulic | G12: Specific | H12: _B0_Drivetrain | I12: ='1.2 Input'!E16 -> Hydraulic | J12: Go to cell | K12: _C1_Drivetrain | L12: ='1.2 Input'!G16 -> Hydraulic | M12: Go to cell | N12: _C2_Drivetrain | O12: ='1.2 Input'!I16 -> Hydraulic | P12: Go to cell
C13: GenRPM | D13: Option | E13: Whether the system is using Variable Speed, Fixed Speed or Fixed Speed with Slip on the generator. | F13: Variable speed Fixed speed Fixed with slip | G13: Specific | H13: _B0_GenRPM | I13: ='1.2 Input'!E20 -> Variable speed | J13: Go to cell | K13: _C1_GenRPM | L13: ='1.2 Input'!G20 -> Variable speed | M13: Go to cell | N13: _C2_GenRPM | O13: ='1.2 Input'!I20 -> Variable speed | P13: Go to cell
C14: Pump | D14: Calculated | E14: If the drivetrain is hydraulic, this variable will state what type of pump is being used. Currently this is calculated based on RatedTurbinePower, but it could also be made into an Option. | F14: CBM 4000 CBM 6000 | G14: Specific | H14: _B0_Pump | I14: ='1.2 Input'!E18 -> 2xCBM 4000 | J14: Go to cell | K14: _C1_Pump | L14: ='1.2 Input'!G18 -> CBM 4000 | M14: Go to cell | N14: _C2_Pump | O14: ='1.2 Input'!I18 -> Check Rotor Power | P14: Go to cell
C15: RotorPowerCurve | D15: Calculated | E15: This is based on the choices made above (drivetrain and GenRPM). This is the registered name of the RotorPowerCurve. | G15: Specific | H15: _B0_RotorPowerCurve | I15: ='1.2 Input'!E41 -> 1200KW_Jan27 | J15: =IF(I15="","",HYPERLINK("["&(MID(CELL("filename"),SEARCH("[",CELL("filename"))+1, SEARCH("]",CELL("filename"))-SEARCH("[",CELL("filename"))-1))&"]"&(IF(I15=0,"",DisplayFormula(I15))), "Go to cell")) -> Go to cell | K15: _C1_RotorPowerCurve | L15: ='1.2 Input'!G41 -> 950KW_VS_3 | M15: =IF(L15="","",HYPERLINK("["&(MID(CELL("filename"),SEARCH("[",CELL("filename"))+1, SEARCH("]",CELL("filename"))-SEARCH("[",CELL("filename"))-1))&"]"&(IF(L15=0,"",DisplayFormula(L15))), "Go to cell")) -> Go to cell | N15: _C2_RotorPowerCurve | O15: ='1.2 Input'!I41 -> 45P5D_3HD_2B_TSR8P0_CR | P15: =IF(O15="","",HYPERLINK("["&(MID(CELL("filename"),SEARCH("[",CELL("filename"))+1, SEARCH("]",CELL("filename"))-SEARCH("[",CELL("filename"))-1))&"]"&(IF(O15=0,"",DisplayFormula(O15))), "Go to cell")) -> Go to cell
C16: DrivetrainEfficiency | D16: Calculated | E16: This is based on the choices made above (drivetrain and GenRPM) | F16: Percentage Hydraulic / Mechanical VS / FS / FSLP | G16: Specific | H16: _B0_DrivetrainEfficiency | I16: ='1.2 Input'!E30 -> Hydraulic VS | J16: Go to cell | K16: _C1_DrivetrainEfficiency | L16: ='1.2 Input'!G30 -> Hydraulic VS | M16: Go to cell | N16: _C2_DrivetrainEfficiency | O16: ='1.2 Input'!I30 -> Hydraulic VS | P16: Go to cell
C17: CutIn | D17: Calculated | E17: This depends on the RotorPowerCurve that gets selected | F17: m/s | G17: Specific | H17: _B0_CutIn | I17: ='1.2 Input'!E63 -> 1 | J17: Go to cell | K17: _C1_CutIn | L17: ='1.2 Input'!G63 -> 1 | M17: Go to cell | N17: _C2_CutIn | O17: ='1.2 Input'!I63 -> 1 | P17: Go to cell
C18: CutOut | D18: Calculated | E18: This depends on the RotorPowerCurve that gets selected | F18: m/s | G18: Specific | H18: _B0_CutOut | I18: ='1.2 Input'!E64 -> 2.5 | J18: Go to cell | K18: _C1_CutOut | L18: ='1.2 Input'!G64 -> 2.5 | M18: Go to cell | N18: _C2_CutOut | O18: ='1.2 Input'!I64 -> 2.5 | P18: Go to cell
C19: CutUsed | D19: Option | E19: The user can decide whether or not to include the cut-in and cut-out speeds when performing the energy calculations. | F19: Yes No | G19: Specific | H19: _B0_CutUsed | I19: ='1.2 Input'!E61 -> Yes | J19: Go to cell | K19: _C1_CutUsed | L19: ='1.2 Input'!G61 -> Yes | M19: Go to cell | N19: _C2_CutUsed | O19: ='1.2 Input'!I61 -> Yes | P19: Go to cell
C20: EnergyLosses | D20: Option | E20: The user can select between several different energy loss cases. The energy loss also includes the availability. In future versions this should be linked to the O&M model. | F20: Gen Low Gen Med Gen High Aquantis | G20: Specific | H20: _B0_EnergyLosses | I20: ='1.2 Input'!E69 -> Med / 95% | J20: Go to cell | K20: _C1_EnergyLosses | L20: ='1.2 Input'!G69 -> Med / 95% | M20: Go to cell | N20: _C2_EnergyLosses | O20: ='1.2 Input'!I69 -> Med / 95% | P20: Go to cell
C21: EnergyLossPercentage | D21: Calculated | E21: This is the percentage energy loss that is calcualted based on which EnergyLosses case is selected above. | F21: Calculated | G21: Specific | H21: _B0_EnergyLossPercentage | I21: ='5.5 EnergyLosses'!D9 -> 0.133 | J21: Go to cell | K21: _C1_EnergyLossPercentage | L21: ='5.5 EnergyLosses'!E9 -> 0.133 | M21: Go to cell | N21: _C2_EnergyLossPercentage | O21: ='5.5 EnergyLosses'!F9 -> 0.133 | P21: Go to cell
C22: AvailabilityLossPercentage | D22: Calculated | E22: This is the percentage availability loss that is calcualted based on which EnergyLosses case is selected above. | F22: Calculated | G22: Specific | H22: _B0_AvailabilityLossPercentage | I22: ='5.5 EnergyLosses'!D17 -> 0.05 | J22: Go to cell | K22: _C1_AvailabilityLossPercentage | L22: ='5.5 EnergyLosses'!E17 -> 0.05 | M22: Go to cell | N22: _C2_AvailabilityLossPercentage | O22: ='5.5 EnergyLosses'!F17 -> 0.05 | P22: Go to cell
C23: DiveDownSpeed | D23: Input | E23: The user can put in the specific current flow that will make the C-Plane dive down. Default is 1.6 m/s | G23: Specific | H23: _B0_DiveDownSpeed | I23: ='1.2 Input'!E67 -> 1.6 | J23: Go to cell | K23: _C1_DiveDownSpeed | L23: ='1.2 Input'!G67 -> 1.6 | M23: Go to cell | N23: _C2_DiveDownSpeed | O23: ='1.2 Input'!I67 -> 1.6 | P23: Go to cell
C24: DiveDownUsed | D24: Option | E24: The user can decide whether or not to include the C-Plane diving down. If this is included, all hours that contain flow speed higher than the DiveDownSpeed will be moved to the DiveDownSpeed. If this is not included, the C-Plane may experience high loads or Cut-off due to speed. | F24: Yes No | G24: Specific | H24: _B0_DiveDownUsed | I24: ='1.2 Input'!E66 -> Yes | J24: Go to cell | K24: _C1_DiveDownUsed | L24: ='1.2 Input'!G66 -> Yes | M24: Go to cell | N24: _C2_DiveDownUsed | O24: ='1.2 Input'!I66 -> Yes | P24: Go to cell
C25: CurrentResource | D25: Option | E25: The user can select between all the different current resources that are available. The difference between the current resources are depth, measurement length, etc. | G25: Specific | H25: _B0_CurrentResource | I25: ='1.2 Input'!E73 -> C-70 | J25: Go to cell | K25: _C1_CurrentResource | L25: ='1.2 Input'!G73 -> C-70 | M25: Go to cell | N25: _C2_CurrentResource | O25: ='1.2 Input'!I73 -> V-bar-66.2 | P25: Go to cell
B26: OPEX | C26: OMMethod | D26: Option | E26: Selects which O&M calculation method is used | F26: Crystal Ball Lookup Table | G26: Specific | H26: _B0_OMMethod | I26: ='1.2 Input'!E55 -> Lookup Table | J26: Go to cell | K26: _C1_OMMethod | L26: ='1.2 Input'!G55 -> Lookup Table | M26: Go to cell | N26: _C2_OMMethod | O26: ='1.2 Input'!I55 -> Lookup Table | P26: Go to cell
C27: OMDate | D27: Calculation | E27: Shows when the specific O&M lookup data was from | G27: Specific | H27: _B0_OMDate | I27: ='4.2 StaticOM'!F14 -> 2010-03-05 | J27: Go to cell | K27: _C1_OMDate | L27: ='4.2 StaticOM'!H14 -> 2011-10-13 | M27: Go to cell | N27: _C2_OMDate | O27: ='4.2 StaticOM'!J14 -> 2012-03-05 | P27: Go to cell
G28: Specific
B30: Financial | C30: Lifetime | D30: Option | E30: The suggested value to use for lifetime is 20 years. The user can select 30 years to see how this effects the COE, but the calculation is only done in a very rough manner. | F30: 20 30 | G30: Specific | H30: _B0_Lifetime | I30: ='1.2 Input'!E78 -> 20 | J30: Go to cell | K30: _C1_Lifetime | L30: ='1.2 Input'!G78 -> 20 | M30: Go to cell | N30: _C2_Lifetime | O30: ='1.2 Input'!I78 -> 20 | P30: Go to cell
C31: DiscountRate | D31: Calculation | E31: The discount rate currently used in the model is based on DOE's FOA, which estimates 7.00 % over 20 years. A re-calculation of this is done to find an approximate Discount Rate for 30 years if the users wants to assess the C-Plane over 30 years instead. This came out to be 5.44 % In future versions, this can be made into an Input field. | G31: Specific | H31: _B0_DiscountRate | I31: ='1.2 Input'!E80 -> 0.07 | J31: Go to cell | K31: _C1_DiscountRate | L31: ='1.2 Input'!G80 -> 0.07 | M31: Go to cell | N31: _C2_DiscountRate | O31: ='1.2 Input'!I80 -> 0.07 | P31: Go to cell
C32: IWF | D32: Input | E32: Insurance, Warranty and Fee's is set to 1% per year following DOE's suggestion in their FOA for a 20 year plant. | G32: Generic | H32: _IWF | I32: ='1.2 Input'!E81 -> 0.01 | J32: Go to cell | L32: ='1.2 Input'!G81 -> 0.01 | M32: Go to cell | O32: ='1.2 Input'!I81 -> 0.01 | P32: Go to cell
C33: OMtax | D33: Input | E33: For O&M costs it is assumed that 40% of the costs can be remvoed due to tax benefits. This is assumed to be combined federal and state tax. The tax benefit is not included in any other part of the assessment. | G33: Generic | H33: _OMtax | I33: ='1.2 Input'!E82 -> 0.4 | J33: Go to cell | L33: ='1.2 Input'!G82 -> 0.4 | M33: Go to cell | O33: ='1.2 Input'!I82 -> 0.4 | P33: Go to cell
C34: GrossMargin | D34: Input | E34: The user can decide how large Gross Margin will be used for Aquantis. The gross margin is put on all CAPEX elements of the project. Default is 28% | G34: Specific | H34: _B0_GrossMargin | I34: ='1.2 Input'!E84 -> 0.28 | J34: Go to cell | K34: _C1_GrossMargin | L34: ='1.2 Input'!G84 -> 0.28 | M34: Go to cell | N34: _C2_GrossMargin | O34: ='1.2 Input'!I84 -> 0.28 | P34: Go to cell
C35: AssemblyPercentage | D35: Input | E35: The user should input a percentage assumed for assembly of all the parts. This is used on all the CAPEX parts, but in later versions we can define this more specifically for each part. | G35: Specific | H35: _B0_AssemblyPercentage | I35: ='1.2 Input'!E87 -> 0.05 | J35: Go to cell | K35: _C1_AssemblyPercentage | L35: ='1.2 Input'!G87 -> 0.05 | M35: Go to cell | N35: _C2_AssemblyPercentage | O35: ='1.2 Input'!I87 -> 0.05 | P35: Go to cell
C36: DecommissioningPercentage | D36: Input | E36: Currently using a percentage. In future versions we will need to find a better estimate. | G36: Specific | H36: _B0_DecommissioningPercentage | I36: ='1.2 Input'!E90 -> 0.03 | J36: Go to cell | K36: _C1_DecommissioningPercentage | L36: ='1.2 Input'!G90 -> 0.03 | M36: Go to cell | N36: _C2_DecommissioningPercentage | O36: ='1.2 Input'!I90 -> 0.03 | P36: Go to cell
B38: Results | C38: NetCF | D38: Calculated | E38: This is the Net Capacity Factor for the C-Planes, based on the inputs above. | G38: Specific | H38: _B0_NetCF | I38: ='5.6 AEP'!J49 -> 0.6001586078 | J38: Go to cell | K38: _C1_NetCF | L38: ='5.6 AEP'!O49 -> 0.5601683945 | M38: Go to cell | N38: _C2_NetCF | O38: ='5.6 AEP'!T49 -> 0.5936091746 | P38: Go to cell
C39: NetAEP | D39: Calculated | E39: The calculated net annual energy production per rotor | G39: Specific | H39: _B0_NetAEP | I39: ='5.6 AEP'!J47 -> 5257389.404 | J39: Go to cell | K39: _C1_NetAEP | L39: ='5.6 AEP'!O47 -> 3925660.108 | M39: Go to cell | N39: _C2_NetAEP | O39: ='5.6 AEP'!T47 -> 6110019.234 | P39: Go to cell
C40: NetAEPCPlane | D40: Calculated | E40: This is the net annual energy produciton for the full C-Plane | G40: Specific | H40: _B0_NetAEPCPlane | I40: ='5.0 Summary AEP'!F30 -> 21029557.62 | J40: Go to cell | K40: _C1_NetAEPCPlane | L40: ='5.0 Summary AEP'!H30 -> 15702640.43 | M40: Go to cell | N40: _C2_NetAEPCPlane | O40: ='5.0 Summary AEP'!J30 -> 12220038.47 | P40: Go to cell
C41: COE | D41: Calculated | E41: This is the Cost of Energy based on the inputs above. | G41: Specific | H41: _B0_COE | I41: ='2.0 Results'!F35 -> 11.01402292 | J41: =IF(I41="","",HYPERLINK("["&(MID(CELL("filename"),SEARCH("[",CELL("filename"))+1, SEARCH("]",CELL("filename"))-SEARCH("[",CELL("filename"))-1))&"]"&(IF(I41=0,"",DisplayFormula(I41))), "Go to cell")) -> Go to cell | K41: _C1_COE | L41: ='2.0 Results'!H35 -> 17.71507401 | M41: =IF(L41="","",HYPERLINK("["&(MID(CELL("filename"),SEARCH("[",CELL("filename"))+1, SEARCH("]",CELL("filename"))-SEARCH("[",CELL("filename"))-1))&"]"&(IF(L41=0,"",DisplayFormula(L41))), "Go to cell")) -> Go to cell | N41: _C2_COE | O41: ='2.0 Results'!J35 -> 10.10217141 | P41: =IF(O41="","",HYPERLINK("["&(MID(CELL("filename"),SEARCH("[",CELL("filename"))+1, SEARCH("]",CELL("filename"))-SEARCH("[",CELL("filename"))-1))&"]"&(IF(O41=0,"",DisplayFormula(O41))), "Go to cell")) -> Go to cell
C42: CapexCPlane | D42: Calculated | E42: Capex for each C-Plane | G42: Specific | H42: _B0_CapexCPlane | I42: ='3.0 Summary CAPEX'!F24 -> 24460146.2 | J42: Go to cell | K42: _C1_CapexCPlane | L42: ='3.0 Summary CAPEX'!I24 -> 29852022.95 | M42: Go to cell | N42: _C2_CapexCPlane | O42: ='3.0 Summary CAPEX'!L24 -> 13098862.9 | P42: Go to cell
C43: OpexCPlane | D43: Calculated | E43: OPEX for each C-Plane ($/yr) | G43: Specific | H43: _B0_OpexCPlane | I43: ='4.0 Summary OPEX'!F13 -> 359388.6 | J43: Go to cell | K43: _C1_OpexCPlane | L43: ='4.0 Summary OPEX'!H13 -> 393572.5384 | M43: Go to cell | N43: _C2_OpexCPlane | O43: ='4.0 Summary OPEX'!J13 -> 186580.2 | P43: Go to cell
C44: WeightCPlane | D44: Calculated | E44: The weight of the Platform and Drivetrain in kg | G44: Specific | H44: _B0_WeightCPlane | I44: ='3.0 Summary CAPEX'!F29 -> 1611598.495 | J44: Go to cell | K44: _C1_WeightCPlane | L44: ='3.0 Summary CAPEX'!I29 -> 2069377.947 | M44: Go to cell | N44: _C2_WeightCPlane | O44: ='3.0 Summary CAPEX'!L29 -> 671260.9141 | P44: Go to cell
C45: PowerDensity | D45: Calculated | E45: C-Plane power density [W / kg] of Platform and Drivetrain | G45: Specific | H45: _B0_PowerDensity | I45: ='2.0 Results'!F37 -> 2.482007779 | J45: Go to cell | K45: _C1_PowerDensity | L45: ='2.0 Results'!H37 -> 1.546358414 | M45: Go to cell | N45: _C2_PowerDensity | O45: ='2.0 Results'!J37 -> 3.500874177 | P45: Go to cell
C46: EnergyDensity | D46: Calculated | E46: C-Plane energy density [kWh / kg] of Platform and Drivetrain | G46: Specific | H46: _B0_EnergyDensity | I46: ='2.0 Results'!F39 -> 3.262220349 | J46: Go to cell | K46: _C1_EnergyDensity | L46: ='2.0 Results'!H39 -> 1.897024231 | M46: Go to cell | N46: _C2_EnergyDensity | O46: ='2.0 Results'!J39 -> 9.102301513 | P46: Go to cell
B48: CAPEX | C48: NumAnchorAft | D48: Calculated | E48: This number will be based on Allie Cribbs calculation sheet It takes into account the factors: __________ | G48: Specific | H48: _B0_NumAnchorAft | I48: ='1.2 Input'!E47 -> 0 | J48: Go to cell | K48: _C1_NumAnchorAft | L48: ='1.2 Input'!G47 -> 0 | M48: Go to cell | N48: _C2_NumAnchorAft | O48: ='1.2 Input'!I47 -> 0 | P48: Go to cell
C49: TypeAnchorAft | D49: Calculated | E49: Based on Allie Cribbs calculation sheet | G49: Specific | H49: _B0_TypeAnchorAft | I49: ='1.2 Input'!E48 -> 0 | J49: Go to cell | K49: _C1_TypeAnchorAft | L49: ='1.2 Input'!G48 -> 0 | M49: Go to cell | N49: _C2_TypeAnchorAft | O49: ='1.2 Input'!I48 -> 0 | P49: Go to cell
C50: NumAnchorForward | D50: Calculated | E50: This number will be based on Allie Cribbs calculation sheet It takes into account the factors: __________ | G50: Specific | H50: _B0_NumAnchorForward | I50: ='1.2 Input'!E49 -> 0 | J50: Go to cell | K50: _C1_NumAnchorForward | L50: ='1.2 Input'!G49 -> 0 | M50: Go to cell | N50: _C2_NumAnchorForward | O50: ='1.2 Input'!I49 -> 0 | P50: Go to cell
C51: TypeAnchorForward | D51: Calculated | E51: Based on Allie Cribbs calculation sheet | G51: Specific | H51: _B0_TypeAnchorForward | I51: ='1.2 Input'!E50 -> 0 | J51: Go to cell | K51: _C1_TypeAnchorForward | L51: ='1.2 Input'!G50 -> 0 | M51: Go to cell | N51: _C2_TypeAnchorForward | O51: ='1.2 Input'!I50 -> 0 | P51: Go to cell
B53: O&M
C66: End

Sheet 1.3 Dropdown
B2: Cost of Energy Model | G2: Information:
B3: Aquantis | G3: The lists on this tab are used as dropdown options for the COE model.
G4: Each list has a list name shown below, and the defined Excel name is OP_listname
B5: Dropdown Menu's | G5: To increase a list, make sure lines are added from within the box.
G6: Description information is added with the defined Excel name of OP_listname_D
G7: NB: The unit is updated manually, and is listed here for information purposes only.
B9: List name: | C9: RotorPower | D9: NumRotors | E9: Drivetrain | F9: GenRPM
B10: Unit: | C10: kW | D10: # | E10: Option | F10: Option
B11: List choices: | C11: 800 | D11: 2 | E11: Hydraulic | F11: Variable speed
C12: 1300 | D12: 4 | E12: Mechanical | F12: Fixed speed
C13: 1000 | D13: 6 | F13: Fixed with slip
C14: 1175 | D14: 8
C15: 1115
C16: 1068
C17: 972
B21: List name: | C21: DTEfficiency
B22: Unit: | C22: Option | D22: Description
B23: List choices: | C23: Fixed efficiency | D23: A fixed drivetrain efficiency is assumed for the full power range of the drivetrain, based on the configuration of the drivetrain. Main input is hydraulic vs. mechanical.
C24: Based on power output | D24: The efficiency of the drivetrain varies depending on the power loading of the drivetrain. By using this option, the effiency of the drivetrain for a specific power loading is used. E.g. At very low power outputs the efficiency is normally pretty low, whilst at high power outputs the efficiency of a drivetrain is normally high.
B34: List name: | C34: Option1
B35: Unit: | C35: Option | D35: Description
B36: List choices: | C36: Option 1 | D36: Description for option 1
C37: Option 2 | D37: Description for option 2
C38: Option 3 | D38: Description for option 3
C39: Option 4 | D39: Description for option 4
B46: List name: | C46: RotorCurve
B47: Unit: | C47: Option | D47: Power (kW) | E47: Drivetrain | F47: DTEfficiency | G47: RotorCurveName | H47: Description | I47: Calc Base | J47: Calc Conf 1 | K47: Calc Conf 2
B48: List choices: | C48: Auto | D48: =IF(C48="auto","yes","no") -> yes | H48: Selection of rotor curve is done automatically (default) | I48: =IF($D$70=$D48,IF($E$70=$E48,IF($F$70=$F48,TRUE,FALSE))) -> FALSE | J48: =IF($D$71=$D48,IF($E$71=$E48,IF($F$71=$F48,TRUE,FALSE))) -> FALSE | K48: =IF($D$72=$D48,IF($E$72=$E48,IF($F$72=$F48,TRUE,FALSE))) -> FALSE
B49: 2 | C49: HY 0.8 MW VS | D49: 800 | E49: Hydraulic | F49: VS | G49: 0.95 VS Case | H49: 0.8 MW variable speed rotor curve | I49: FALSE | J49: =IF($D$71=$D49,IF($E$71=$E49,IF($F$71=$F49,TRUE,FALSE))) -> TRUE | K49: =IF($D$72=$D49,IF($E$72=$E49,IF($F$72=$F49,TRUE,FALSE))) -> FALSE
B50: 3 | C50: HY 0.8 MW FS | D50: 800 | E50: Hydraulic | F50: FS | G50: N.A. | H50: 0.8 MW fixed speed rotor curve | I50: FALSE | J50: FALSE | K50: FALSE
B51: 4 | C51: HY 0.8 MW FSLP | D51: 800 | E51: Hydraulic | F51: FSLP | G51: N.A. | H51: 0.8 MW fixed speed with slip rotor curve | I51: FALSE | J51: FALSE | K51: FALSE
B52: 5 | C52: HY 1.3 MW 47.5 | D52: 1175 | E52: Hydraulic | F52: VS | G52: 47P5D_3HD_2B_TSR8P5_CR | H52: 1.3 MW ARL 47.5m | I52: FALSE | J52: FALSE | K52: TRUE
B53: 6 | C53: HY 1.3 MW 45.5 | D53: 1115 | E53: Hydraulic | F53: VS | G53: 45P5D_3HD_2B_TSR8P0_CR | H53: 1.3 MW ARL 45.5m | I53: FALSE | J53: FALSE | K53: FALSE
B54: 7 | C54: HY 1.3 MW 43.5 | D54: 1068 | E54: Hydraulic | F54: VS | G54: 43P5D_3HD_2B_TSR7P0_CR | H54: 1.3 MW ARL 43.5m | I54: FALSE | J54: FALSE | K54: FALSE
B55: 8 | C55: ME 0.8 MW VS | D55: 800 | E55: Mechanical | F55: VS | G55: N.A. | H55: 0.8 MW variable speed rotor curve | I55: FALSE | J55: FALSE | K55: FALSE
B56: 9 | C56: ME 0.8 MW FS | D56: 800 | E56: Mechanical | F56: FS | G56: N.A. | H56: 0.8 MW fixed speed rotor curve | I56: FALSE | J56: FALSE | K56: FALSE
B57: 10 | C57: ME 0.8 MW FSLP | D57: 800 | E57: Mechanical | F57: FSLP | G57: N.A. | H57: 0.8 MW fixed speed with slip rotor curve | I57: FALSE | J57: FALSE | K57: FALSE
B58: 11 | C58: HY 1.3 MW 41.5 | D58: 972 | E58: Hydraulic | F58: VS | G58: 41P5D_3HD_2B_TSR7P0_CR | H58: 1.3 MW ARL 41.5m | I58: FALSE | J58: FALSE | K58: FALSE
B59: 12 | C59: ME 1.3 MW FS | D59: 1300 | E59: Mechanical | F59: FS | G59: 1.45 VS+FS Case | H59: 1.3 MW fixed speed rotor curve | I59: FALSE | J59: FALSE | K59: FALSE
B60: 13 | C60: ME 1.3 MW FSLP | D60: 1300 | E60: Mechanical | F60: FSLP | G60: 1.45 VS+FS+SLP Case | H60: 1.3 MW fixed speed with slip rotor curve | I60: FALSE | J60: FALSE | K60: FALSE
B61: 14 | C61: Aug11 HY 0.8MW VS | D61: 800 | E61: Hydraulic | F61: VS | G61: 950KW_VS_2 | H61: August 11 version of the Hydraulic Drivetrain, 800kW, variable speed | I61: FALSE | J61: TRUE | K61: FALSE
B62: 15 | C62: Sept1 HY 0.8MW VS | D62: 800 | E62: Hydraulic | F62: VS | G62: 950KW_VS_3 | H62: September 1 version of the Hydraulic Drivetrain, 800kW, variable speed. C_F ~70% | I62: FALSE | J62: TRUE | K62: FALSE
B63: 16 | C63: Nov 8 HY 1.0MW VS | D63: 1000 | E63: Hydraulic | F63: VS | G63: 1200KW_3HD_2B | H63: Steve Willets input on 11/8/2011 | I63: TRUE | J63: FALSE | K63: FALSE
B64: 17 | C64: HY 1.0 MW VS Jan27,12 | D64: 1000 | E64: Hydraulic | F64: VS | G64: 1200KW_Jan27 | H64: A new turbine curve received on january 27, 2012. Uses a more efficient rotor, and is cheaper to produce. | I64: TRUE | J64: FALSE | K64: FALSE
B65: 18 | I65: FALSE | J65: FALSE | K65: FALSE
C66: Note: This list should be linked up to the actual rotor power curves that we have available. We might need to add some selection attributes in order to make the list "smart".
C68: Variables for sorting the Rotor Curves:
C69: Variables: | D69: Power (MW) | E69: Drivetrain | F69: DTEfficiency | G69: Choice:
C70: Base case: | D70: ='1.2 Input'!E33 -> 1000 | E70: ='1.2 Input'!E34 -> Hydraulic | F70: ='1.2 Input'!E35 -> VS | G70: =MATCH(TRUE,I48:I65,0) -> 16 | H70: Name: BaseRotor
C71: Conf 1: | D71: ='1.2 Input'!G33 -> 800 | E71: ='1.2 Input'!G34 -> Hydraulic | F71: ='1.2 Input'!G35 -> VS | G71: =MATCH(TRUE,J48:J65,0) -> 2 | H71: Name: Conf1Rotor
C72: Conf 2: | D72: ='1.2 Input'!I33 -> 1175 | E72: ='1.2 Input'!I34 -> Hydraulic | F72: ='1.2 Input'!I35 -> VS | G72: =MATCH(TRUE,K48:K65,0) -> 5 | H72: Name: Conf2Rotor
B75: List name: | C75: OMMethod
B76: Unit: | C76: Option | D76: Description
B77: List choices: | C77: Crystal Ball | D77: Crystal Ball is used to create an estimated O&M cost based on the current specific inputs.
C78: Lookup Table | D78: The current inputs are used to look up previous Crystal Ball run results in a table. This does not require having Crystal Ball installed.
B88: List name: | C88: CurrentResource
B89: Unit: | C89: Option | D89: Description
A90: 1 | B90: List choices: | C90: =HLOOKUP(A90,InfoCurrentResource,2,0) -> C-50
A91: 2 | C91: C-70
A92: 3 | C92: C-90
A93: 4 | C93: Vbar-56.4
A94: 5 | C94: V-bar-66.2
A95: 6 | C95: V-bar 75.9
A96: 7 | C96: V-bar 85.7
A97: 8 | C97: V-Avg 56, 85
A98: 9 | C98: V-Avg 56-85
A99: 10 | C99: 0
A100: 12
A101: 13
A102: 14
B106: List name: | C106: Lifetime
B107: Unit: | C107: Years | D107: Description
B108: List choices: | C108: 20 | D108: The time period that the asset is paid down affects the Discount Rate used in the COE model. For 20 years DOE assumes 7.00 %, for 30 years we've calculated 5.44 %.
C109: 30 | D109: The time period that the asset is paid down affects the Discount Rate used in the COE model. For 20 years DOE assumes 7.00 %, for 30 years we've calculated 5.44 %.
B118: List name: | C118: EnergyLosses
B119: Unit: | C119: Option | D119: Description
A120: 1 | B120: List choices: | C120: =HLOOKUP(A120,InfoEnergyLosses,2,0) -> Gen High | D120: Using low versions of the standard losses that are found and used in wind projects.
A121: 2 | C121: Gen Med | D121: Using standard losses that are found and used in wind projects.
A122: 3 | C122: Gen Low | D122: Using a high version of the standard losses that are found and used in wind projects.
A123: 4 | C123: Med / 97% | D123: Medium energy loss, 97% availability
A124: 5 | C124: Med / 95% | D124: Medium energy loss, 95% availability
A125: 6 | C125: Aquantis | D125: Currently not assessed
A126: 7
A127: 8

Sheet 2.0 Results
B2: Cost of Energy Model
B3: Aquantis
B5: COE Results
B7: Deterministic
D9: TARGET | F9: 4 ROTOR | H9: PDR | J9: 2 ROTOR
B10: CAPEX ($/C-Plane) - incl Gross Margin | D10: ='3.0 Summary CAPEX'!D24 -> 8431911.112 | E10: =IF(D10="","",HYPERLINK("["&(MID(CELL("filename"),SEARCH("[",CELL("filename"))+1, SEARCH("]",CELL("filename"))-SEARCH("[",CELL("filename"))-1))&"]"&(IF(D10=0,"",DisplayFormula(D10))), "link")) -> link | F10: ='3.0 Summary CAPEX'!F24 -> 24460146.2 | G10: =IF(F10="","",HYPERLINK("["&(MID(CELL("filename"),SEARCH("[",CELL("filename"))+1, SEARCH("]",CELL("filename"))-SEARCH("[",CELL("filename"))-1))&"]"&(IF(F10=0,"",DisplayFormula(F10))), "link")) -> link | H10: ='3.0 Summary CAPEX'!I24 -> 29852022.95 | I10: =IF(H10="","",HYPERLINK("["&(MID(CELL("filename"),SEARCH("[",CELL("filename"))+1, SEARCH("]",CELL("filename"))-SEARCH("[",CELL("filename"))-1))&"]"&(IF(H10=0,"",DisplayFormula(H10))), "link")) -> link | J10: ='3.0 Summary CAPEX'!L24 -> 13098862.9 | K10: =IF(J10="","",HYPERLINK("["&(MID(CELL("filename"),SEARCH("[",CELL("filename"))+1, SEARCH("]",CELL("filename"))-SEARCH("[",CELL("filename"))-1))&"]"&(IF(J10=0,"",DisplayFormula(J10))), "link")) -> link
B12: Platform | C12: LaGrassa spreadsheet | D12: ='3.0 Summary CAPEX'!D7 -> 2428390.4 | E12: =IF(D12="","",HYPERLINK("["&(MID(CELL("filename"),SEARCH("[",CELL("filename"))+1, SEARCH("]",CELL("filename"))-SEARCH("[",CELL("filename"))-1))&"]"&(IF(D12=0,"",DisplayFormula(D12))), "link")) -> link | F12: ='3.0 Summary CAPEX'!F7 -> 9711644.98 | G12: =IF(F12="","",HYPERLINK("["&(MID(CELL("filename"),SEARCH("[",CELL("filename"))+1, SEARCH("]",CELL("filename"))-SEARCH("[",CELL("filename"))-1))&"]"&(IF(F12=0,"",DisplayFormula(F12))), "link")) -> link | H12: ='3.0 Summary CAPEX'!I7 -> 15193196.57 | I12: =IF(H12="","",HYPERLINK("["&(MID(CELL("filename"),SEARCH("[",CELL("filename"))+1, SEARCH("]",CELL("filename"))-SEARCH("[",CELL("filename"))-1))&"]"&(IF(H12=0,"",DisplayFormula(H12))), "link")) -> link | J12: ='3.0 Summary CAPEX'!L7 -> 4604075.157 | K12: =IF(J12="","",HYPERLINK("["&(MID(CELL("filename"),SEARCH("[",CELL("filename"))+1, SEARCH("]",CELL("filename"))-SEARCH("[",CELL("filename"))-1))&"]"&(IF(J12=0,"",DisplayFormula(J12))), "link")) -> link
B14: Drivetrain | C14: LaGrassa spreadsheet | D14: ='3.0 Summary CAPEX'!D9 -> 1821292.8 | E14: =IF(D14="","",HYPERLINK("["&(MID(CELL("filename"),SEARCH("[",CELL("filename"))+1, SEARCH("]",CELL("filename"))-SEARCH("[",CELL("filename"))-1))&"]"&(IF(D14=0,"",DisplayFormula(D14))), "link")) -> link | F14: ='3.0 Summary CAPEX'!F9 -> 5216264.827 | G14: =IF(F14="","",HYPERLINK("["&(MID(CELL("filename"),SEARCH("[",CELL("filename"))+1, SEARCH("]",CELL("filename"))-SEARCH("[",CELL("filename"))-1))&"]"&(IF(F14=0,"",DisplayFormula(F14))), "link")) -> link | H14: ='3.0 Summary CAPEX'!I9 -> 3730167.195 | I14: =IF(H14="","",HYPERLINK("["&(MID(CELL("filename"),SEARCH("[",CELL("filename"))+1, SEARCH("]",CELL("filename"))-SEARCH("[",CELL("filename"))-1))&"]"&(IF(H14=0,"",DisplayFormula(H14))), "link")) -> link | J14: ='3.0 Summary CAPEX'!L9 -> 2608132.414 | K14: =IF(J14="","",HYPERLINK("["&(MID(CELL("filename"),SEARCH("[",CELL("filename"))+1, SEARCH("]",CELL("filename"))-SEARCH("[",CELL("filename"))-1))&"]"&(IF(J14=0,"",DisplayFormula(J14))), "link")) -> link
B16: Assembly cost | C16: Calculated | D16: ='3.0 Summary CAPEX'!D11 -> 182129.28 | E16: =IF(D16="","",HYPERLINK("["&(MID(CELL("filename"),SEARCH("[",CELL("filename"))+1, SEARCH("]",CELL("filename"))-SEARCH("[",CELL("filename"))-1))&"]"&(IF(D16=0,"",DisplayFormula(D16))), "link")) -> link | F16: ='3.0 Summary CAPEX'!F11 -> 746395.4904 | G16: =IF(F16="","",HYPERLINK("["&(MID(CELL("filename"),SEARCH("[",CELL("filename"))+1, SEARCH("]",CELL("filename"))-SEARCH("[",CELL("filename"))-1))&"]"&(IF(F16=0,"",DisplayFormula(F16))), "link")) -> link | H16: ='3.0 Summary CAPEX'!I11 -> 946168.1881 | I16: =IF(H16="","",HYPERLINK("["&(MID(CELL("filename"),SEARCH("[",CELL("filename"))+1, SEARCH("]",CELL("filename"))-SEARCH("[",CELL("filename"))-1))&"]"&(IF(H16=0,"",DisplayFormula(H16))), "link")) -> link | J16: ='3.0 Summary CAPEX'!L11 -> 360610.3785 | K16: =IF(J16="","",HYPERLINK("["&(MID(CELL("filename"),SEARCH("[",CELL("filename"))+1, SEARCH("]",CELL("filename"))-SEARCH("[",CELL("filename"))-1))&"]"&(IF(J16=0,"",DisplayFormula(J16))), "link")) -> link
B18: Mooring Lines & Attachments | C18: Allie Cribbs spreadsheet | D18: ='3.0 Summary CAPEX'!D13 -> 607097.6001 | E18: =IF(D18="","",HYPERLINK("["&(MID(CELL("filename"),SEARCH("[",CELL("filename"))+1, SEARCH("]",CELL("filename"))-SEARCH("[",CELL("filename"))-1))&"]"&(IF(D18=0,"",DisplayFormula(D18))), "link")) -> link | F18: ='3.0 Summary CAPEX'!F13 -> 1199480 | G18: =IF(F18="","",HYPERLINK("["&(MID(CELL("filename"),SEARCH("[",CELL("filename"))+1, SEARCH("]",CELL("filename"))-SEARCH("[",CELL("filename"))-1))&"]"&(IF(F18=0,"",DisplayFormula(F18))), "link")) -> link | H18: ='3.0 Summary CAPEX'!I13 -> 3159280 | I18: =IF(H18="","",HYPERLINK("["&(MID(CELL("filename"),SEARCH("[",CELL("filename"))+1, SEARCH("]",CELL("filename"))-SEARCH("[",CELL("filename"))-1))&"]"&(IF(H18=0,"",DisplayFormula(H18))), "link")) -> link | J18: ='3.0 Summary CAPEX'!L13 -> 750670.7793 | K18: =IF(J18="","",HYPERLINK("["&(MID(CELL("filename"),SEARCH("[",CELL("filename"))+1, SEARCH("]",CELL("filename"))-SEARCH("[",CELL("filename"))-1))&"]"&(IF(J18=0,"",DisplayFormula(J18))), "link")) -> link
B20: Grid Connect | D20: ='3.0 Summary CAPEX'!D15 -> 849936.6401 | E20: =IF(D20="","",HYPERLINK("["&(MID(CELL("filename"),SEARCH("[",CELL("filename"))+1, SEARCH("]",CELL("filename"))-SEARCH("[",CELL("filename"))-1))&"]"&(IF(D20=0,"",DisplayFormula(D20))), "link")) -> link | F20: ='3.0 Summary CAPEX'!F15 -> 1862540 | G20: =IF(F20="","",HYPERLINK("["&(MID(CELL("filename"),SEARCH("[",CELL("filename"))+1, SEARCH("]",CELL("filename"))-SEARCH("[",CELL("filename"))-1))&"]"&(IF(F20=0,"",DisplayFormula(F20))), "link")) -> link | H20: ='3.0 Summary CAPEX'!I15 -> 1713280 | I20: =IF(H20="","",HYPERLINK("["&(MID(CELL("filename"),SEARCH("[",CELL("filename"))+1, SEARCH("]",CELL("filename"))-SEARCH("[",CELL("filename"))-1))&"]"&(IF(H20=0,"",DisplayFormula(H20))), "link")) -> link | J20: ='3.0 Summary CAPEX'!L15 -> 1433319.535 | K20: =IF(J20="","",HYPERLINK("["&(MID(CELL("filename"),SEARCH("[",CELL("filename"))+1, SEARCH("]",CELL("filename"))-SEARCH("[",CELL("filename"))-1))&"]"&(IF(J20=0,"",DisplayFormula(J20))), "link")) -> link
B22: Installation Cost | C22: Calculated | D22: ='3.0 Summary CAPEX'!D17 -> 182129.28 | E22: =IF(D22="","",HYPERLINK("["&(MID(CELL("filename"),SEARCH("[",CELL("filename"))+1, SEARCH("]",CELL("filename"))-SEARCH("[",CELL("filename"))-1))&"]"&(IF(D22=0,"",DisplayFormula(D22))), "link")) -> link | F22: ='3.0 Summary CAPEX'!F17 -> 1013200 | G22: =IF(F22="","",HYPERLINK("["&(MID(CELL("filename"),SEARCH("[",CELL("filename"))+1, SEARCH("]",CELL("filename"))-SEARCH("[",CELL("filename"))-1))&"]"&(IF(F22=0,"",DisplayFormula(F22))), "link")) -> link | H22: ='3.0 Summary CAPEX'!I17 -> 999375 | I22: =IF(H22="","",HYPERLINK("["&(MID(CELL("filename"),SEARCH("[",CELL("filename"))+1, SEARCH("]",CELL("filename"))-SEARCH("[",CELL("filename"))-1))&"]"&(IF(H22=0,"",DisplayFormula(H22))), "link")) -> link | J22: ='3.0 Summary CAPEX'!L17 -> 986744.186 | K22: =IF(J22="","",HYPERLINK("["&(MID(CELL("filename"),SEARCH("[",CELL("filename"))+1, SEARCH("]",CELL("filename"))-SEARCH("[",CELL("filename"))-1))&"]"&(IF(J22=0,"",DisplayFormula(J22))), "link")) -> link
B24: Gross Margin | C24: Calculated | D24: ='3.0 Summary CAPEX'!D22 -> 2360935.111 | E24: =IF(D24="","",HYPERLINK("["&(MID(CELL("filename"),SEARCH("[",CELL("filename"))+1, SEARCH("]",CELL("filename"))-SEARCH("[",CELL("filename"))-1))&"]"&(IF(D24=0,"",DisplayFormula(D24))), "link")) -> link | F24: ='3.0 Summary CAPEX'!F22 -> 4710620.906 | G24: =IF(F24="","",HYPERLINK("["&(MID(CELL("filename"),SEARCH("[",CELL("filename"))+1, SEARCH("]",CELL("filename"))-SEARCH("[",CELL("filename"))-1))&"]"&(IF(F24=0,"",DisplayFormula(F24))), "link")) -> link | H24: ='3.0 Summary CAPEX'!I22 -> 4110556 | I24: =IF(H24="","",HYPERLINK("["&(MID(CELL("filename"),SEARCH("[",CELL("filename"))+1, SEARCH("]",CELL("filename"))-SEARCH("[",CELL("filename"))-1))&"]"&(IF(H24=0,"",DisplayFormula(H24))), "link")) -> link | J24: ='3.0 Summary CAPEX'!L22 -> 2355310.453 | K24: =IF(J24="","",HYPERLINK("["&(MID(CELL("filename"),SEARCH("[",CELL("filename"))+1, SEARCH("]",CELL("filename"))-SEARCH("[",CELL("filename"))-1))&"]"&(IF(J24=0,"",DisplayFormula(J24))), "link")) -> link
B26: OPEX ($/C-Plane/yr) | D26: ='4.0 Summary OPEX'!D13 -> 168638.2222 | E26: =IF(D26="","",HYPERLINK("["&(MID(CELL("filename"),SEARCH("[",CELL("filename"))+1, SEARCH("]",CELL("filename"))-SEARCH("[",CELL("filename"))-1))&"]"&(IF(D26=0,"",DisplayFormula(D26))), "link")) -> link | F26: ='4.0 Summary OPEX'!F13 -> 359388.6 | G26: =IF(F26="","",HYPERLINK("["&(MID(CELL("filename"),SEARCH("[",CELL("filename"))+1, SEARCH("]",CELL("filename"))-SEARCH("[",CELL("filename"))-1))&"]"&(IF(F26=0,"",DisplayFormula(F26))), "link")) -> link | H26: ='4.0 Summary OPEX'!H13 -> 393572.5384 | I26: =IF(H26="","",HYPERLINK("["&(MID(CELL("filename"),SEARCH("[",CELL("filename"))+1, SEARCH("]",CELL("filename"))-SEARCH("[",CELL("filename"))-1))&"]"&(IF(H26=0,"",DisplayFormula(H26))), "link")) -> link | J26: ='4.0 Summary OPEX'!J13 -> 186580.2 | K26: =IF(J26="","",HYPERLINK("["&(MID(CELL("filename"),SEARCH("[",CELL("filename"))+1, SEARCH("]",CELL("filename"))-SEARCH("[",CELL("filename"))-1))&"]"&(IF(J26=0,"",DisplayFormula(J26))), "link")) -> link
B28: Net Annual Energy Production (kWh/yr) | D28: ='2.4 Quick COE'!AK24*1000 -> 10539888.89 | E28: =IF(D28="","",HYPERLINK("["&(MID(CELL("filename"),SEARCH("[",CELL("filename"))+1, SEARCH("]",CELL("filename"))-SEARCH("[",CELL("filename"))-1))&"]"&(IF(D28=0,"",DisplayFormula(D28))), "link")) -> link | F28: =_B0_NetAEPCPlane -> 21029557.62 | G28: =IF(F28="","",HYPERLINK("["&(MID(CELL("filename"),SEARCH("[",CELL("filename"))+1, SEARCH("]",CELL("filename"))-SEARCH("[",CELL("filename"))-1))&"]"&(IF(F28=0,"",DisplayFormula(F28))), "link")) -> link | H28: =_C1_NetAEPCPlane -> 15702640.43 | I28: =IF(H28="","",HYPERLINK("["&(MID(CELL("filename"),SEARCH("[",CELL("filename"))+1, SEARCH("]",CELL("filename"))-SEARCH("[",CELL("filename"))-1))&"]"&(IF(H28=0,"",DisplayFormula(H28))), "link")) -> link | J28: =_C2_NetAEPCPlane -> 12220038.47 | K28: =IF(J28="","",HYPERLINK("["&(MID(CELL("filename"),SEARCH("[",CELL("filename"))+1, SEARCH("]",CELL("filename"))-SEARCH("[",CELL("filename"))-1))&"]"&(IF(J28=0,"",DisplayFormula(J28))), "link")) -> link
B30: Financial:
B31: Discount rate | D31: =_B0_DiscountRate -> 0.07 | E31: =IF(D31="","",HYPERLINK("["&(MID(CELL("filename"),SEARCH("[",CELL("filename"))+1, SEARCH("]",CELL("filename"))-SEARCH("[",CELL("filename"))-1))&"]"&(IF(D31=0,"",DisplayFormula(D31))), "link")) -> link | F31: =_B0_DiscountRate -> 0.07 | G31: =IF(F31="","",HYPERLINK("["&(MID(CELL("filename"),SEARCH("[",CELL("filename"))+1, SEARCH("]",CELL("filename"))-SEARCH("[",CELL("filename"))-1))&"]"&(IF(F31=0,"",DisplayFormula(F31))), "link")) -> link | H31: =_C1_DiscountRate -> 0.07 | I31: =IF(H31="","",HYPERLINK("["&(MID(CELL("filename"),SEARCH("[",CELL("filename"))+1, SEARCH("]",CELL("filename"))-SEARCH("[",CELL("filename"))-1))&"]"&(IF(H31=0,"",DisplayFormula(H31))), "link")) -> link | J31: =_C2_DiscountRate -> 0.07 | K31: =IF(J31="","",HYPERLINK("["&(MID(CELL("filename"),SEARCH("[",CELL("filename"))+1, SEARCH("]",CELL("filename"))-SEARCH("[",CELL("filename"))-1))&"]"&(IF(J31=0,"",DisplayFormula(J31))), "link")) -> link
B32: IWF | D32: =_IWF -> 0.01 | E32: =IF(D32="","",HYPERLINK("["&(MID(CELL("filename"),SEARCH("[",CELL("filename"))+1, SEARCH("]",CELL("filename"))-SEARCH("[",CELL("filename"))-1))&"]"&(IF(D32=0,"",DisplayFormula(D32))), "link")) -> link | F32: =_IWF -> 0.01 | G32: =IF(F32="","",HYPERLINK("["&(MID(CELL("filename"),SEARCH("[",CELL("filename"))+1, SEARCH("]",CELL("filename"))-SEARCH("[",CELL("filename"))-1))&"]"&(IF(F32=0,"",DisplayFormula(F32))), "link")) -> link | H32: =_IWF -> 0.01 | I32: =IF(H32="","",HYPERLINK("["&(MID(CELL("filename"),SEARCH("[",CELL("filename"))+1, SEARCH("]",CELL("filename"))-SEARCH("[",CELL("filename"))-1))&"]"&(IF(H32=0,"",DisplayFormula(H32))), "link")) -> link | J32: =_IWF -> 0.01 | K32: =IF(J32="","",HYPERLINK("["&(MID(CELL("filename"),SEARCH("[",CELL("filename"))+1, SEARCH("]",CELL("filename"))-SEARCH("[",CELL("filename"))-1))&"]"&(IF(J32=0,"",DisplayFormula(J32))), "link")) -> link
B35: Cost of Energy (cents/kWh) | D35: =((D31+D32)*D10+D26)/D28*100 -> 8 | F35: =((F31+F32)*F10+F26)/F28*100 -> 11.01402292 | H35: =((H31+H32)*H10+H26)/H28*100 -> 17.71507401 | J35: =((J31+J32)*J10+J26)/J28*100 -> 10.10217141
B37: Power Density (W / kg) | D37: =_B0_RatedCPlanePower/_B0_WeightCPlane*1000 -> 2.482007779 | F37: =_B0_RatedCPlanePower/_B0_WeightCPlane*1000 -> 2.482007779 | H37: =_C1_RatedCPlanePower/_C1_WeightCPlane*1000 -> 1.546358414 | J37: =_C2_RatedCPlanePower/_C2_WeightCPlane*1000 -> 3.500874177
B39: Energy Density (kWh / kg) | D39: =_B0_NetAEP/_B0_WeightCPlane -> 3.262220349 | F39: =_B0_NetAEP/_B0_WeightCPlane -> 3.262220349 | H39: =_C1_NetAEP/_C1_WeightCPlane -> 1.897024231 | J39: =_C2_NetAEP/_C2_WeightCPlane -> 9.102301513
B41: Breakdown of COE
B42: CAPEX | D42: =(((D31+D32)*D10)/D28*100)/D35 -> 0.8 | F42: =(((F31+F32)*F10)/F28*100)/F35 -> 0.8448369942 | H42: =(((H31+H32)*H10)/H28*100)/H35 -> 0.8585154133 | J42: =(((J31+J32)*J10)/J28*100)/J35 -> 0.8488604071
B43: Platform | D43: =(((D$31+D$32)*D12)/D$28*100)/D$35 -> 0.2304 | F43: =(((F$31+F$32)*F12)/F$28*100)/F$35 -> 0.335433684 | H43: =(((H$31+H$32)*H12)/H$28*100)/H$35 -> 0.4369416924 | J43: =(((J$31+J$32)*J12)/J$28*100)/J$35 -> 0.2983630824
B45: Drivetrain | D45: =(((D$31+D$32)*D14)/D$28*100)/D$35 -> 0.1728 | F45: =(((F$31+F$32)*F14)/F$28*100)/F$35 -> 0.1801662779 | H45: =(((H$31+H$32)*H14)/H$28*100)/H$35 -> 0.107276014 | J45: =(((J$31+J$32)*J14)/J$28*100)/J$35 -> 0.1690177505
B47: Assembly cost | D47: =(((D$31+D$32)*D16)/D$28*100)/D$35 -> 0.01728 | F47: =(((F$31+F$32)*F16)/F$28*100)/F$35 -> 0.0257799981 | H47: =(((H$31+H$32)*H16)/H$28*100)/H$35 -> 0.02721088532 | J47: =(((J$31+J$32)*J16)/J$28*100)/J$35 -> 0.02336904165
B49: Mooring Lines & Attachments | D49: =(((D$31+D$32)*D18)/D$28*100)/D$35 -> 0.0576 | F49: =(((F$31+F$32)*F18)/F$28*100)/F$35 -> 0.04142923224 | H49: =(((H$31+H$32)*H18)/H$28*100)/H$35 -> 0.09085784837 | J49: =(((J$31+J$32)*J18)/J$28*100)/J$35 -> 0.04864656635
B51: Grid Connect | D51: =(((D$31+D$32)*D20)/D$28*100)/D$35 -> 0.08064 | F51: =(((F$31+F$32)*F20)/F$28*100)/F$35 -> 0.06433087857 | H51: =(((H$31+H$32)*H20)/H$28*100)/H$35 -> 0.0492722818 | J51: =(((J$31+J$32)*J20)/J$28*100)/J$35 -> 0.09288502468
B53: Installation cost | D53: =(((D$31+D$32)*D22)/D$28*100)/D$35 -> 0.01728 | F53: =(((F$31+F$32)*F22)/F$28*100)/F$35 -> 0.03499524637 | H53: =(((H$31+H$32)*H22)/H$28*100)/H$35 -> 0.02874106196 | J53: =(((J$31+J$32)*J22)/J$28*100)/J$35 -> 0.06394509796
B55: Gross Margin | D55: =(((D$31+D$32)*D24)/D$28*100)/D$35 -> 0.224 | F55: =(((F$31+F$32)*F24)/F$28*100)/F$35 -> 0.162701677 | H55: =(((H$31+H$32)*H24)/H$28*100)/H$35 -> 0.1182156294 | J55: =(((J$31+J$32)*J24)/J$28*100)/J$35 -> 0.1526338435
B57: OPEX | D57: =((D26)/D28*100)/D35 -> 0.2 | F57: =((F26)/F28*100)/F35 -> 0.1551630058 | H57: =((H26)/H28*100)/H35 -> 0.1414845867 | J57: =((J26)/J28*100)/J35 -> 0.1511395929
B58: Total contribution | D58: =D42+D57 -> 1 | F58: =F42+F57 -> 1 | H58: =H42+H57 -> 1 | J58: =J42+J57 -> 1
F60: =_B0_NetCF -> 0.6001586078 | H60: =_C1_NetCF -> 0.5601683945 | J60: =_C2_NetCF -> 0.5936091746
B63: Cost of Energy Calculation Method - Using DOE FOA procedure
B64: COE | C64: = | D64: (DR+IWF) x ICC + LRC + O&M
D65: AEPnet | AF65: Area | AG65: Owner
AF66: OPEX | AG66: Jonny
B67: COE | C67: º | D67: Levelized Cost of Energy ($/kWh) (constant dollars) | AF67: Platform | AG67: M.LaGrassa
B68: DR | C68: º | D68: Discount Rate (1/yr) | AF68: Drivetrain | AG68: M.Calder
B69: IWF | C69: º | D69: Insurance, Warranty and Fees (1/yr) | AF69: Mooring | AG69: Allie
B70: ICC | C70: º | D70: Initial Installed Capital Cost ($) | AF70: Grid | AG70: M.Calder
AF71: Assembly and installation | AG71: Allie/M.Calder
C72: º | D72: TURCC + BOSCC | AF72: AEP | AG72: B.Z/M.Calder
B73: TURCC | C73: º | D73: Turbine Capital Cost ($)
B74: BOSCC | C74: º | D74: Balance of System Capital Cost ($)
B75: LRC | C75: º | D75: Levelized Replacement/Overhaul Cost ($/yr)
B76: O&M | C76: º | D76: Levelized O&M Cost ($/yr)
B77: AEPnet | C77: º | D77: Net Annual Energy Production (kWh/yr)
B80: Need to run a Crystal Ball assessment, and export the risked results for the data to be valid
D81: Base Case | AG81: Waterfall data
B82: Last Results | D82: Deterministic | F82: P10 | H82: P50 | I82: (diff) | J82: P90 | AG82: Target | AH82: Base Case | AK82: =AF90 -> OPEX | AL82: =AF89 -> Gross Margin | AM82: =AF88 -> Platform | AN82: =AF87 -> Drivetrain | AO82: =AF86 -> Mooring | AP82: =AF85 -> Grid | AQ82: =AF84 -> Assembly and Installation | AR82: AEP Increase | AV82: OPEX | AW82: Gross Margin | AX82: Platform | AY82: Drivetrain | AZ82: Mooring | BA82: Grid | BB82: Assembly and Installation | BC82: AEP Increase | BG82: OPEX | BH82: Gross Margin | BI82: Platform | BJ82: Drivetrain | BK82: Mooring | BL82: Grid | BM82: Assembly and Installation | BN82: AEP Increase | BO82: Goal | BR82: Graph data / Cost of Energy - [cents/kWh] | BS82: =CONCATENATE("Target (",ROUND(BS93,2),")") -> Target (8) | BW82: =CONCATENATE("Base Case (",ROUND(BW93,2),")") -> Base Case (11.01) | CA82: =CONCATENATE("Configuration 1 (",ROUND(CA93,2),")") -> Configuration 1 (17.72) | CE82: =CONCATENATE("Configuration 2 (",ROUND(CE93,2),")") -> Configuration 2 (10.1) | CM82: Total C-Plane Cost | CN82: =CONCATENATE("Target (",ROUND(CN91/1000000,2),")") -> Target (8.43) | CV82: =CONCATENATE("Base Case (",ROUND(CV91/1000000,2),")") -> Base Case (22.11) | DE82: =CONCATENATE("Configuration 1 (",ROUND(DE91/1000000,2),")") -> Configuration 1 (28.1) | DM82: =CONCATENATE("Configuration 2 (",ROUND(DM91/1000000,2),")") -> Configuration 2 (13.1) | DX82: Total C-Plane Cost | DY82: =CONCATENATE("Target (",ROUND(DY91,2),")") -> Target (6.4) | EG82: =CONCATENATE("Base Case (",ROUND(EG91,2),")") -> Base Case (8.41) | EP82: =CONCATENATE("Configuration 1 (",ROUND(EP91,2),")") -> Configuration 1 (14.32) | EX82: =CONCATENATE("Configuration 2 (",ROUND(EX91,2),")") -> Configuration 2 (8.58)
B83: Total COE | D83: =BW93 -> 11.01402292 | F83: ='2.3 COE_History'!D64 -> 14.48816244 | G83: =SUM(F86:F92)+F93 -> 14.32650727 | H83: ='2.3 COE_History'!D65 -> 17.97459406 | I83: =(J83-D83)/D83 -> 0.9624663871 | J83: ='2.3 COE_History'!D66 -> 21.61464977 | AG83: =CONCATENATE(AG82," (",ROUND(AG93,2),")") -> Target (8) | AH83: =CONCATENATE(AH82," (",ROUND(AH93,2),")") -> Base Case (11.01) | AI83: AEP Corrected | AJ83: Differences | AK83: =CONCATENATE(TEXT(AK95,"0%")," ",AK82," decrease") -> 53% OPEX decrease | AL83: 50% Gross Margin decrease | AM83: 75% Platform decrease | AN83: 65% Drivetrain decrease | AO83: 49% Mooring decrease | AP83: 54% Grid decrease | AQ83: 79% Assembly and Installation decrease | AR83: =CONCATENATE(TEXT(AR95,"0%")," ",AR82) -> -100% AEP Increase | AS83: Configuration 1 | AT83: AEP Corrected | AU83: Differences | AV83: =CONCATENATE(TEXT(AV95,"0%")," ",AV82," decrease") -> 57% OPEX decrease | AW83: 43% Gross Margin decrease | AX83: 84% Platform decrease | AY83: 51% Drivetrain decrease | AZ83: 81% Mooring decrease | BA83: 50% Grid decrease | BB83: 81% Assembly and Installation decrease | BC83: =CONCATENATE(TEXT(BC95,"0%")," ",BC82) -> -49% AEP Increase | BD83: Configuration 2 | BE83: AEP Corrected | BF83: Differences | BG83: =CONCATENATE(TEXT(BG95,"0%")," ",BG82," decrease") -> 10% OPEX decrease | BH83: 0% Gross Margin decrease | BI83: 47% Platform decrease | BJ83: 30% Drivetrain decrease | BK83: 19% Mooring decrease | BL83: 41% Grid decrease | BM83: 73% Assembly and Installation decrease | BN83: =CONCATENATE(TEXT(BN95,"0%")," ",BN82) -> -16% AEP Increase | BO83: =CONCATENATE(BO82," (",ROUND(BO93,2),")") -> Goal (8) | BS83: CAPEX | BT83: Gross Margin, 28% | BU83: OPEX | BV83: =BS82 -> Target (8) | BW83: CAPEX | BX83: Gross Margin, 28% | BY83: OPEX | BZ83: =BW82 -> Base Case (11.01) | CA83: CAPEX | CB83: Gross Margin, 28% | CC83: OPEX | CD83: =CA82 -> Configuration 1 (17.72) | CE83: CAPEX | CF83: Gross Margin, 28% | CG83: OPEX | CH83: =CE82 -> Configuration 2 (10.1) | CN83: Total CAPEX | CO83: Platform | CP83: Drivetrain | CQ83: Mooring | CR83: Grid | CS83: Assembly and Installation | CT83: Gross Margin | CU83: =CN82 -> Target (8.43) | CV83: Total CAPEX | CX83: Platform | CY83: Drivetrain | CZ83: Mooring | DA83: Grid | DB83: Assembly and Installation | DC83: Gross Margin | DD83: =CV82 -> Base Case (22.11) | DE83: Total CAPEX | DF83: Platform | DG83: Drivetrain | DH83: Mooring | DI83: Grid | DJ83: Assembly and Installation | DK83: Gross Margin | DL83: =DE82 -> Configuration 1 (28.1) | DM83: Total CAPEX | DN83: Platform | DO83: Drivetrain | DP83: Mooring | DQ83: Grid | DR83: Assembly and Installation | DS83: Gross Margin | DT83: =DM82 -> Configuration 2 (13.1) | DY83: Total CAPEX | DZ83: Platform | EA83: Drivetrain | EB83: Mooring | EC83: Grid | ED83: Assembly and Installation | EE83: Gross Margin | EF83: =DY82 -> Target (6.4) | EG83: Total CAPEX | EI83: Platform | EJ83: Drivetrain | EK83: Mooring | EL83: Grid | EM83: Assembly and Installation | EN83: Gross Margin | EO83: =EG82 -> Base Case (8.41) | EP83: Total CAPEX | EQ83: Platform | ER83: Drivetrain | ES83: Mooring | ET83: Grid | EU83: Assembly and Installation | EV83: Gross Margin | EW83: =EP82 -> Configuration 1 (14.32) | EX83: Total CAPEX | EY83: Platform | EZ83: Drivetrain | FA83: Mooring | FB83: Grid | FC83: Assembly and Installation | FD83: Gross Margin | FE83: =EX82 -> Configuration 2 (8.58)
AF84: =BR84 -> Assembly and Installation | AG84: 0.27648 | AH84: =BW84 -> 0.6693799356 | AI84: =AH84*(1-AI$94) -> 1.335570429 | AJ84: =AI84-$AG84 -> 1.059090429 | AQ84: =AJ84 -> 1.059090429 | AS84: =CA84 -> 0.991192887 | AT84: =AS84*(1-AT$94) -> 1.476708689 | AU84: =AT84-$AG84 -> 1.200228689 | BB84: =AU84 -> 1.200228689 | BD84: =CE84 -> 0.8820624047 | BE84: =BD84*(1-BE$94) -> 1.022670792 | BF84: =BE84-$AG84 -> 0.7461907917 | BM84: =BF84 -> 0.7461907917 | BO84: =AG84 -> 0.27648 | BR84: Assembly and Installation | BS84: =(D47+D53)*BS93 -> 0.27648 | BW84: =(F47+F53)*BW93 -> 0.6693799356 | CA84: =(H47+H53)*CA93 -> 0.991192887 | CE84: =(J47+J53)*CE93 -> 0.8820624047 | CM84: Assembly and Installation | CN84: =D22+D16 -> 364258.5601 | CS84: =CN84 -> 364258.5601 | CV84: =F22+F16 -> 1759595.49 | DB84: =CV84 -> 1759595.49 | DE84: =H22+H16 -> 1945543.188 | DJ84: =DE84 -> 1945543.188 | DM84: =J22+J16 -> 1347354.565 | DR84: =DM84 -> 1347354.565 | DX84: Assembly and Installation | DY84: =CN84*0.08/DY$92*100 -> 0.27648 | ED84: =DY84 -> 0.27648 | EG84: =CV84*0.08/EG$92*100 -> 0.6693799356 | EM84: =EG84 -> 0.6693799356 | EP84: =DE84*0.08/EP$92*100 -> 0.991192887 | EU84: =EP84 -> 0.991192887 | EX84: =DM84*0.08/EX$92*100 -> 0.8820624047 | FC84: =EX84 -> 0.8820624047
B85: CAPEX ($/C-Plane) - incl G.Margin | D85: =SUM(D86:D92) -> 9.30505402 | F85: ='2.3 COE_History'!D68 -> 11.94383425 | G85: =SUM(F86:F92) -> 11.8235159 | H85: ='2.3 COE_History'!D69 -> 15.44344116 | I85: =(J85-D85)/D85 -> 1.042900036 | J85: ='2.3 COE_History'!D70 -> 19.00929519 | AF85: Grid | AG85: 0.64512 | AH85: =BW85 -> 0.7085417712 | AI85: 1.413707502 | AJ85: 0.7685875025 | AP85: =AJ85 -> 0.7685875025 | AS85: =CA85 -> 0.8728621188 | AT85: 1.300415986 | AU85: 0.6552959856 | BA85: =AU85 -> 0.6552959856 | BD85: =CE85 -> 0.9383404405 | BE85: 1.087920034 | BF85: 0.4428000339 | BL85: =BF85 -> 0.4428000339 | BO85: =AG85 -> 0.64512 | BR85: Grid | BS85: =D51*BS93 -> 0.64512 | BW85: =F51*BW93 -> 0.7085417712 | CA85: =H51*CA93 -> 0.8728621188 | CE85: =J51*CE93 -> 0.9383404405 | CM85: Grid | CN85: =D20 -> 849936.6401 | CR85: =CN85 -> 849936.6401 | CV85: =F20 -> 1862540 | DA85: =CV85 -> 1862540 | DE85: =H20 -> 1713280 | DI85: =DE85 -> 1713280 | DM85: =J20 -> 1433319.535 | DQ85: =DM85 -> 1433319.535 | DX85: Grid | DY85: 0.64512 | EC85: =DY85 -> 0.64512 | EG85: 0.7085417712 | EL85: =EG85 -> 0.7085417712 | EP85: 0.8728621188 | ET85: =EP85 -> 0.8728621188 | EX85: 0.9383404405 | FB85: =EX85 -> 0.9383404405
B86: Platform | D86: ='2.3 COE_History'!D15 -> 3.694474285 | F86: ='2.3 COE_History'!D72 -> 5.799958686 | H86: ='2.3 COE_History'!D73 -> 7.936311986 | I86: =(J86-D86)/D86 -> 1.743773403 | J86: ='2.3 COE_History'!D74 -> 10.13680028 | AF86: Mooring | AG86: 0.4608 | AH86: =BW86 -> 0.4563025136 | AI86: 0.9104308499 | AJ86: 0.4496308499 | AO86: =AJ86 -> 0.4496308499 | AS86: =CA86 -> 1.609553508 | AT86: 2.397960762 | AU86: 1.937160762 | AZ86: =AU86 -> 1.937160762 | BD86: =CE86 -> 0.4914359517 | BE86: 0.5697750988 | BF86: 0.1089750988 | BK86: =BF86 -> 0.1089750988 | BO86: 0.4608 | BR86: Mooring | BS86: =D49*BS93 -> 0.4608 | BW86: =F49*BW93 -> 0.4563025136 | CA86: =H49*CA93 -> 1.609553508 | CE86: =J49*CE93 -> 0.4914359517 | CM86: Mooring | CN86: =D18 -> 607097.6001 | CQ86: =CN86 -> 607097.6001 | CV86: =F18 -> 1199480 | CZ86: =CV86 -> 1199480 | DE86: =H18 -> 3159280 | DH86: =DE86 -> 3159280 | DM86: =J18 -> 750670.7793 | DP86: =DM86 -> 750670.7793 | DX86: Mooring | DY86: 0.4608 | EB86: =DY86 -> 0.4608 | EG86: 0.4563025136 | EK86: =EG86 -> 0.4563025136 | EP86: 1.609553508 | ES86: =EP86 -> 1.609553508 | EX86: 0.4914359517 | FA86: =EX86 -> 0.4914359517
B87: Drivetrain | D87: ='2.3 COE_History'!D16 -> 1.984355514 | F87: ='2.3 COE_History'!D76 -> 1.482363595 | H87: ='2.3 COE_History'!D77 -> 2.089584518 | I87: =(J87-D87)/D87 -> 0.4386700617 | J87: ='2.3 COE_History'!D78 -> 2.85483287 | AF87: Drivetrain | AG87: 1.3824 | AH87: =BW87 -> 1.984355514 | AI87: 3.959256027 | AJ87: 2.576856027 | AN87: =AJ87 -> 2.576856027 | AS87: =CA87 -> 1.900402527 | AT87: 2.831276294 | AU87: 1.448876294 | AY87: =AU87 -> 1.448876294 | BD87: =CE87 -> 1.707446287 | BE87: 1.979628014 | BF87: 0.5972280137 | BJ87: =BF87 -> 0.5972280137 | BO87: 1.3824 | BR87: Drivetrain | BS87: =D45*BS93 -> 1.3824 | BW87: =F45*BW93 -> 1.984355514 | CA87: =H45*CA93 -> 1.900402527 | CE87: =J45*CE93 -> 1.707446287 | CM87: Drivetrain | CN87: =D14 -> 1821292.8 | CP87: =CN87 -> 1821292.8 | CV87: =F14 -> 5216264.827 | CY87: =CV87 -> 5216264.827 | DE87: =H14 -> 3730167.195 | DG87: =DE87 -> 3730167.195 | DM87: =J14 -> 2608132.414 | DO87: =DM87 -> 2608132.414 | DX87: Drivetrain | DY87: 1.3824 | EA87: =DY87 -> 1.3824 | EG87: 1.984355514 | EJ87: =EG87 -> 1.984355514 | EP87: 1.900402527 | ER87: =EP87 -> 1.900402527 | EX87: 1.707446287 | EZ87: =EX87 -> 1.707446287
B88: Assembly cost | D88: ='2.3 COE_History'!D19/2 -> 0.3346899678 | F88: ='2.3 COE_History'!D92 -> 0.3456613939 | H88: ='2.3 COE_History'!D93 -> 0.4826607786 | I88: 0.8202820606 | J88: ='2.3 COE_History'!D94 -> 0.6092301443 | AF88: Platform | AG88: 1.8432 | AH88: =BW88 -> 3.694474285 | AI88: 7.371345243 | AJ88: 5.528145243 | AM88: =AJ88 -> 5.528145243 | AS88: =CA88 -> 7.740454419 | AT88: 11.53195957 | AU88: 9.688759568 | AX88: =AU88 -> 9.688759568 | BD88: =CE88 -> 3.014115 | BE88: 3.494591037 | BF88: 1.651391037 | BI88: =BF88 -> 1.651391037 | BO88: 1.8432 | BR88: Platform | BS88: =D43*BS93 -> 1.8432 | BW88: =F43*BW93 -> 3.694474285 | CA88: =H43*CA93 -> 7.740454419 | CE88: =J43*CE93 -> 3.014115 | CM88: Platform | CN88: =D12 -> 2428390.4 | CO88: =CN88 -> 2428390.4 | CV88: =F12 -> 9711644.98 | CX88: =CV88 -> 9711644.98 | DE88: =H12 -> 15193196.57 | DF88: =DE88 -> 15193196.57 | DM88: =J12 -> 4604075.157 | DN88: =DM88 -> 4604075.157 | DX88: Platform | DY88: 1.8432 | DZ88: =DY88 -> 1.8432 | EG88: 3.694474285 | EI88: =EG88 -> 3.694474285 | EP88: 7.740454419 | EQ88: =EP88 -> 7.740454419 | EX88: 3.014115 | EY88: =EX88 -> 3.014115
B89: Mooring Lines & Attachments | D89: ='2.3 COE_History'!D17 -> 0.4563025136 | F89: ='2.3 COE_History'!D80 -> 1.118135051 | H89: ='2.3 COE_History'!D81 -> 1.488935259 | I89: 2.800125826 | J89: ='2.3 COE_History'!D82 -> 1.734006967 | AF89: =BR89 -> Gross Margin | AG89: =BT89 -> 1.792 | AH89: =BX89 -> 1.792 | AI89: 3.575461529 | AJ89: 1.783461529 | AL89: =AJ89 -> 1.783461529 | AS89: =CB89 -> 2.094198625 | AT89: 3.119999493 | AU89: 1.327999493 | AW89: =AU89 -> 1.327999493 | BD89: =CF89 -> 1.541933249 | BE89: 1.787730764 | BF89: -0.00426923551 | BH89: =BF89 -> -0.00426923551 | BO89: 1.792 | BR89: Gross Margin | BT89: =D55*BS93 -> 1.792 | BX89: =F55*BW93 -> 1.792 | CB89: =H55*CA93 -> 2.094198625 | CF89: =J55*CE93 -> 1.541933249 | CM89: Gross Margin | CN89: =(SUM(CN84:CN88)/(1-CN95))-SUM(CN84:CN88) -> 2360935.111 | CT89: =CN89 -> 2360935.111 | CV89: =CN89 -> 2360935.111 | DC89: =CT89 -> 2360935.111 | DE89: =CN89 -> 2360935.111 | DK89: =DE89 -> 2360935.111 | DM89: =CN89 -> 2360935.111 | DS89: =DM89 -> 2360935.111 | DX89: Gross Margin | DY89: 1.792 | EE89: =DY89 -> 1.792 | EG89: 0.8981397154 | EN89: =EG89 -> 0.8981397154 | EP89: 1.202821969 | EV89: =EP89 -> 1.202821969 | EX89: 1.545615502 | FD89: =EX89 -> 1.545615502
B90: Grid Connect | D90: ='2.3 COE_History'!D18 -> 0.7085417712 | F90: ='2.3 COE_History'!D84 -> 0.6330391827 | H90: ='2.3 COE_History'!D85 -> 0.8797600441 | I90: 0.566574455 | J90: ='2.3 COE_History'!D86 -> 1.109983439 | AF90: =BR90 -> OPEX | AG90: =BU90 -> 1.6 | AH90: =BY90 -> 1.708968903 | AI90: 3.409794958 | AJ90: 1.809794958 | AK90: =AJ90 -> 1.809794958 | AS90: =CC90 -> 2.506409925 | AT90: 3.734124168 | AU90: 2.134124168 | AV90: =AU90 -> 2.134124168 | BD90: =CG90 -> 1.526838074 | BE90: 1.770229287 | BF90: 0.1702292874 | BG90: =BF90 -> 0.1702292874 | BO90: 1.6 | BR90: OPEX | BU90: =D57*BS93 -> 1.6 | BY90: =F57*BW93 -> 1.708968903 | CC90: =H57*CA93 -> 2.506409925 | CG90: =J57*CE93 -> 1.526838074 | CL90: Ghost values | CP90: =SUM(CO84:CO90) -> 2428390.4 | CQ90: =SUM(CP84:CP90) -> 4249683.201 | CR90: =SUM(CQ84:CQ90) -> 4856780.801 | CS90: =SUM(CR84:CR90) -> 5706717.441 | CT90: =SUM(CS84:CS90) -> 6070976.001 | CY90: =SUM(CX84:CX90) -> 9711644.98 | CZ90: =SUM(CY84:CY90) -> 14927909.81 | DA90: =SUM(CZ84:CZ90) -> 16127389.81 | DB90: =SUM(DA84:DA90) -> 17989929.81 | DC90: =SUM(DB84:DB90) -> 19749525.3 | DG90: =SUM(DF84:DF90) -> 15193196.57 | DH90: =SUM(DG84:DG90) -> 18923363.76 | DI90: =SUM(DH84:DH90) -> 22082643.76 | DJ90: =SUM(DI84:DI90) -> 23795923.76 | DK90: =SUM(DJ84:DJ90) -> 25741466.95 | DO90: =SUM(DN84:DN90) -> 4604075.157 | DP90: =SUM(DO84:DO90) -> 7212207.57 | DQ90: =SUM(DP84:DP90) -> 7962878.349 | DR90: =SUM(DQ84:DQ90) -> 9396197.884 | DS90: =SUM(DR84:DR90) -> 10743552.45 | DW90: Ghost values | EA90: =SUM(DZ84:DZ90) -> 1.8432 | EB90: =SUM(EA84:EA90) -> 3.2256 | EC90: =SUM(EB84:EB90) -> 3.6864 | ED90: =SUM(EC84:EC90) -> 4.33152 | EE90: =SUM(ED84:ED90) -> 4.608 | EJ90: =SUM(EI84:EI90) -> 3.694474285 | EK90: =SUM(EJ84:EJ90) -> 5.678829799 | EL90: =SUM(EK84:EK90) -> 6.135132313 | EM90: =SUM(EL84:EL90) -> 6.843674084 | EN90: =SUM(EM84:EM90) -> 7.51305402 | ER90: =SUM(EQ84:EQ90) -> 7.740454419 | ES90: =SUM(ER84:ER90) -> 9.640856946 | ET90: =SUM(ES84:ES90) -> 11.25041045 | EU90: =SUM(ET84:ET90) -> 12.12327257 | EV90: =SUM(EU84:EU90) -> 13.11446546 | EZ90: =SUM(EY84:EY90) -> 3.014115 | FA90: =SUM(EZ84:EZ90) -> 4.721561287 | FB90: =SUM(FA84:FA90) -> 5.212997239 | FC90: =SUM(FB84:FB90) -> 6.15133768 | FD90: =SUM(FC84:FC90) -> 7.033400084
B91: Installation Cost | D91: ='2.3 COE_History'!D19/2 -> 0.3346899678 | F91: ='2.3 COE_History'!D88 -> 0.3501595911 | H91: ='2.3 COE_History'!D89 -> 0.4820240701 | I91: 0.842428126 | J91: ='2.3 COE_History'!D90 -> 0.6166422102 | AF91: =BR91 -> AEP Improvement | AG91: 0 | AI91: =AH93*AI94 -> -10.96154362 | AJ91: -10.96154362 | AR91: =AJ91 -> -10.96154362 | AT91: =AS93*AT94 -> -8.677370951 | AU91: -8.677370951 | BC91: =AU91 -> -8.677370951 | BE91: =BD93*BE94 -> -1.61037362 | BF91: -1.61037362 | BN91: =BF91 -> -1.61037362 | BR91: AEP Improvement | BS91: 0 | BV91: =BS93 -> 8 | BW91: 0 | BZ91: =BW93 -> 11.01402292 | CA91: 0 | CD91: =CA93 -> 17.71507401 | CE91: 0 | CH91: =CE93 -> 10.10217141 | CM91: COE Total | CN91: =SUM(CN84:CN89) -> 8431911.112 | CU91: =CN91 -> 8431911.112 | CV91: =SUM(CV84:CV89) -> 22110460.41 | DD91: =CV91 -> 22110460.41 | DE91: =SUM(DE84:DE89) -> 28102402.06 | DL91: =DE91 -> 28102402.06 | DM91: =SUM(DM84:DM89) -> 13104487.56 | DT91: =DM91 -> 13104487.56 | DX91: COE Total | DY91: =SUM(DY84:DY89) -> 6.4 | EF91: =DY91 -> 6.4 | EG91: =SUM(EG84:EG89) -> 8.411193735 | EO91: =EG91 -> 8.411193735 | EP91: =SUM(EP84:EP89) -> 14.31728743 | EW91: =EP91 -> 14.31728743 | EX91: =SUM(EX84:EX89) -> 8.579015586 | FE91: =EX91 -> 8.579015586
B92: Gross Margin | D92: ='2.3 COE_History'!D20 -> 1.792 | F92: ='2.3 COE_History'!D100 -> 2.094198398 | H92: ='2.3 COE_History'!D101 -> 2.094198398 | I92: 0.168637499 | J92: ='2.3 COE_History'!D102 -> 2.094198398 | AE92: Ghost values --> | AK92: =AH93-SUM(AK84:AK91) -> 9.204227964 | AL92: =AK92-SUM(AL84:AL91) -> 7.420766435 | AM92: 1.892621192 | AN92: -0.6842348357 | AO92: -1.133865686 | AP92: -1.902453188 | AQ92: -2.961543617 | AR92: 8 | AV92: =AS93-AV84 -> 17.71507401 | AW92: =AV92-SUM(AW84:AW90) -> 16.38707452 | AX92: =AW92-SUM(AX84:AX90) -> 6.698314948 | AY92: =AX92-SUM(AY84:AY90) -> 5.249438654 | AZ92: =AY92-SUM(AZ84:AZ90) -> 3.312277892 | BA92: =AZ92-SUM(BA84:BA91) -> 2.656981906 | BB92: =BA92-SUM(BB84:BB91) -> 1.456753217 | BC92: =BB92-SUM(BC84:BC91) -> 10.13412417 | BG92: =BD93-BG84 -> 10.10217141 | BH92: =BG92-SUM(BH84:BH90) -> 10.10644064 | BI92: =BH92-SUM(BI84:BI90) -> 8.455049606 | BJ92: =BI92-SUM(BJ84:BJ90) -> 7.857821592 | BK92: =BJ92-SUM(BK84:BK90) -> 7.748846493 | BL92: =BK92-SUM(BL84:BL91) -> 7.306046459 | BM92: =BL92-SUM(BM84:BM91) -> 6.559855668 | BN92: =BM92-SUM(BN84:BN91) -> 8.170229287 | BQ92: Ghost values | BT92: =SUM(BS84:BS92) -> 4.608 | BU92: =SUM(BT84:BT92) -> 6.4 | BX92: =SUM(BW84:BW92) -> 7.51305402 | BY92: =SUM(BX84:BX92) -> 9.30505402 | CB92: =SUM(CA84:CA92) -> 13.11446546 | CC92: =SUM(CB84:CB92) -> 15.20866409 | CF92: =SUM(CE84:CE92) -> 7.033400084 | CG92: =SUM(CF84:CF92) -> 8.575333334 | CM92: NET AEP | CN92: =D28 -> 10539888.89 | CV92: =F28 -> 21029557.62 | DE92: =H28 -> 15702640.43 | DM92: =J28 -> 12220038.47 | DX92: NET AEP | DY92: =CN92 -> 10539888.89 | EG92: =CV92 -> 21029557.62 | EP92: =DE92 -> 15702640.43 | EX92: =DM92 -> 12220038.47
B93: OPEX ($/C-Plane/yr) | D93: ='2.3 COE_History'!D21 -> 1.708968903 | F93: ='2.3 COE_History'!D104 -> 2.502991374 | H93: ='2.3 COE_History'!D105 -> 2.55479462 | I93: =(J93-D93)/D93 -> 0.537453267 | J93: ='2.3 COE_History'!D106 -> 2.627459822 | AF93: =BR93 -> COE Total | AG93: =BS93 -> 8 | AH93: =BW93 -> 11.01402292 | AI93: =SUM(AI84:AI91) -> 11.01402292 | AJ93: =SUM(AJ84:AJ90) -> 13.97556654 | AS93: =SUM(AS84:AS90) -> 17.71507401 | AT93: =SUM(AT84:AT91) -> 17.71507401 | AU93: =SUM(AU84:AU90) -> 18.39244496 | BD93: =SUM(BD84:BD90) -> 10.10217141 | BE93: =SUM(BE84:BE91) -> 10.10217141 | BF93: =SUM(BF84:BF90) -> 3.712545027 | BO93: =SUM(BO84:BO92) -> 8 | BR93: COE Total | BS93: =D35 -> 8 | BW93: =F35 -> 11.01402292 | CA93: =H35 -> 17.71507401 | CE93: =J35 -> 10.10217141 | CM93: AEP Correction Percent | CV93: =($BS$94-CV92)/$BS$94 -> -0.9952352282 | DE93: =($BS$94-DE92)/$BS$94 -> -0.4898297882 | DM93: =($BS$94-DM92)/$BS$94 -> -0.1594086612 | DX93: AEP Correction Percent | EG93: =($BS$94-EG92)/$BS$94 -> -0.9952352282 | EP93: =($BS$94-EP92)/$BS$94 -> -0.4898297882 | EX93: =($BS$94-EX92)/$BS$94 -> -0.1594086612
AF94: AEP Correction Percent | AI94: =BW95 -> -0.9952352282 | AT94: =CA95 -> -0.4898297882 | BE94: =CE95 -> -0.1594086612 | BR94: NET AEP | BS94: =D28 -> 10539888.89 | BW94: =F28 -> 21029557.62 | CA94: =H28 -> 15702640.43 | CE94: =J28 -> 12220038.47
B95: Check: | AF95: Percent decrease | AK95: =AK90/AI90 -> 0.5307635739 | AL95: =AL89/AI89 -> 0.4988059624 | AM95: =AM88/AI88 -> 0.7499506618 | AN95: =AN87/AI87 -> 0.6508434942 | AO95: =AO86/AI86 -> 0.4938660085 | AP95: =AP85/AI85 -> 0.5436679802 | AQ95: =AQ84/AI84 -> 0.7929873303 | AR95: =AI94 -> -0.9952352282 | AV95: =AV90/AT90 -> 0.5715193368 | AW95: =AW89/AT89 -> 0.4256409324 | AX95: =AX88/AT88 -> 0.8401659329 | AY95: =AY87/AT87 -> 0.5117396339 | AZ95: =AZ86/AT86 -> 0.8078367223 | BA95: =BA85/AT85 -> 0.5039125886 | BB95: =BB84/AT84 -> 0.8127728224 | BC95: =AT94 -> -0.4898297882 | BG95: =BG90/BE90 -> 0.09616228169 | BH95: =BH89/BE89 -> -0.002388075204 | BI95: =BI88/BE88 -> 0.4725563077 | BJ95: =BJ87/BE87 -> 0.3016869885 | BK95: =BK86/BE86 -> 0.1912598481 | BL95: =BL85/BE85 -> 0.4070152402 | BM95: =BM84/BE84 -> 0.7296490696 | BN95: =BE94 -> -0.1594086612 | BR95: AEP Correction Percent | BW95: =($BS$94-BW94)/$BS$94 -> -0.9952352282 | CA95: =($BS$94-CA94)/$BS$94 -> -0.4898297882 | CE95: =($BS$94-CE94)/$BS$94 -> -0.1594086612 | CM95: Gross margin percent | CN95: =_B0_GrossMargin -> 0.28 | CV95: =_B0_GrossMargin -> 0.28 | DE95: =_C1_GrossMargin -> 0.28 | DM95: =_C2_GrossMargin -> 0.28 | DX95: Gross margin percent | DY95: =_B0_GrossMargin -> 0.28 | EG95: =_B0_GrossMargin -> 0.28 | EP95: =_C1_GrossMargin -> 0.28 | EX95: =_C2_GrossMargin -> 0.28
DX97: AEP | DY97: =D28 -> 10539888.89 | EG97: =F28 -> 21029557.62 | EP97: =H28 -> 15702640.43 | EX97: =J28 -> 12220038.47

Sheet CB_DATA_ (hidden)
A1: Crystal Ball Data
P2: =_xll.CB.RecalcCounterFN() -> 
A3: Workbook Variables | B3: Last Var Column | C3: 0
A4: Name:
A5: Value:
A7: Worksheet Data | B7: Last Data Column Used
B8: 14
A10: Sheet Ref
A11: =CB_DATA_!#REF! ->  | B11: ='2.1 Results Risked'!#REF! ->  | C11: ='x3.3Capex_1(Sep20)CBM4000Metric'!#REF! ->  | D11: ='3.2x Base(Sep21)CBM4000Metric'!#REF! ->  | E11: ='3.5 Assembly cost'!#REF! ->  | F11: ='3.6 Mooring Lines & Attachments'!#REF! ->  | G11: ='3.7 Grid Connect'!#REF! ->  | H11: ='3.8 Installation Cost'!#REF! ->  | I11: ='3.9 Decommissioning Cost'!#REF! ->  | J11: ='x3.2Base(Sep28)CBM4000Metric'!#REF! ->  | K11: =#REF! ->  | L11: =#REF! ->  | M11: =#REF! ->  | N11: ='3.2 4 ROTOR'!#REF! -> 
A13: Sheet Guid
A14: 59d1e048-4596-49ac-a143-0a8455349ef2 | B14: d8e7cdef-3939-450e-895c-f16f13b3d287 | C14: 75398319-1243-4e91-b1ea-81913e51079c | D14: 85df3ef1-0b5e-4740-af30-26baceed53a6 | E14: db66dc7c-5bd6-4ed3-9030-9caac331d8a4 | F14: 5f5cd06e-da7a-4b95-aca1-20d8b1cb2a3f | G14: f928575e-3448-444a-a9f6-c12d223f3c39 | H14: 2d5492c1-23e9-487c-9f16-e737c28dc09a | I14: f007fa4b-1a93-4693-ba32-f044b2ef1350 | J14: 898c861f-db2f-4335-b2bf-2976e3c3d7dc | K14: 221b8b81-398d-499f-b3a3-cefeb3188898 | L14: f77ca215-92a0-47a6-bfee-bb1e36148893 | M14: b5a49da5-4873-4de3-a3c7-fe7aaaa09e25 | N14: 3761425c-1c27-49a5-aa6d-8742ac90ab0f
A16: Deleted sheet count
K17: 3 | L17: 3 | M17: 4
A19: Last row used
A20: 34 | B20: 31 | C20: 26 | D20: 26 | E20: 31 | F20: 31 | G20: 31 | H20: 31 | I20: 31 | J20: 26 | K20: 26 | L20: 26 | M20: 26 | N20: 34
A25: Data blocks
A26: CB_Block_0 | B26: CB_Block_7.0.0.0:1 | E26: CB_Block_7.0.0.0:1 | F26: CB_Block_7.0.0.0:1 | G26: CB_Block_7.0.0.0:1 | H26: CB_Block_7.0.0.0:1 | I26: CB_Block_7.0.0.0:1 | N26: CB_Block_7.0.0.0:2
A27: 㜸〱敤㕣㕢㙣ㅣ搷㜹摥㌳攴㉥㜷㤶愴㐸㡢戲㘵㌹㡥捤挴㜱㝣愱㑡㡢戲㔵㕢㘹ㄵ㠵ㄷ㔱㘲㐲㠹戴㐸㐹㜶敤㤴ㅥ敥捥㠸㈳敤捣搲㌳㐳㑡㜴摣摡戹㌵㑤搳㑢㘰愰㐸㥤戸戵㥤㍥戵攸〵㝤㠸㙢愳㘹㠳愲㤷戴㠵〳ㄴ㘸晡㔰愰て㙥㔰戴て㉤ち〱㝤挹㐳㠰昴晢晥㌳戳㍢扢攴づ改戵摤搲〵挷摥㥦㘷晥㜳捥捣㌹攷扦㥥晦㍦愳㥣捡攵㜲㍦挶挵扦扣扡㔹戸㝤㘱㈳㡣㙣㙦㜴戲㔶慤摡攵挸慤昹攱攸㜸㄰㔸ㅢ戳㙥ㄸ㜵愱㐱㘱挹㐵㝤㤸㕦ち摤㘷散攲搲扡ㅤ㠴㘸㤴捦攵㡡㐵搳㐰㍤ㅦ挲摦㘰㜲㘳戲㔷㕦㌷挰攲攴挴摣昲ㄵ㍣㜵㈱慡〵昶攱攱㡢扡敦㠹戱戱搱戱搱愳てㅥㅦㅢ㍤㜲㜸㜸㜲慤ㅡ慤〵昶〹摦㕥㡢〲慢㝡㜸㜸㝥㙤戹敡㤶㍦㘵㙦㉣搶慥摡晥〹㝢昹挸㠳换搶㐳㡦㡣㍤㜴散㤸㜳晣昸㈳㝤㜸㜵敥摣攴挴㝣㘰㍢攱扢昴捣㍣㠷晣搰㤴㕤㜶㌹㌷摢づ㕣晦昲攸攴〴晥㑦㡤ㅦ㜷て㡦㉥慣搸㜶挴㔷摢㠱敤㤷敤搰㐴挷㕥㙦㍣っ搷扣㔵㉥㥥改㑤㘳慡㘵㉢㡣昲摥愴㕤慤㥡㕥昲搴愲㌷㠷戵慢㕡ㅢ㝤摥㠲敤㠷㙥攴慥扢搱㐶挱㕢挴㠳㉡晤摥㠵搰㍥㙦昹㤷敤㜳㤶㘷攷扤搳㙢㙥愵㕢㕦戹慥㝢㤲㐷愴〷㈶搳ㅦㅤて扤挹ㄵ㉢㤰ㄱ㠵㕣㤸㡣戶搳㐱戹戹敤㕤敤㥦换愱换ㅢ昸捣扢摢户㐳捤㐵㉢愸户ㅣ㘹摦㌲㥥㝣昳〸ㅥ㘸摦㍥戵㐶捤㝤敥㙢摦㐷㤶戲戹戵敡㡤昹㕢㔶ㄴ㤳㌱ぢ〴㍤〴㐵〲ㄲ搰㉣ㄱ昴ㄲ昴〱愸敥晦㠶㤴愴㍢戲捡㔸戲㡣愵㘵㘳愹㙣㉣㔵㡣㈵摢㔸㜲㡣愵换挶搲㡡戱攴ㅡ㑢㔷㡣愵慢㘸㤳㕣挵㥥ㅥ㈳扥㡥㠴㝦㝢晢㙦摤晡㥤㠹摦晤敢㝦㜸昵てて扥晥㤵扥㝤㘸昴㘸㍣愸愹挰扡〶㔶㙢㜰昱搱搱㈳晣㙦㝢愹㠰㔰㌸挷㥣㠷㥤戱戱捡戱㈳搶㠳㔶㥥搳捡㈰㝥ㄳ愳っ愲㙤㥦㜳挹昵㉢戵㙢㐲扢摢㈷慣搰㙥㉣摣㐸㕣㌷㔱㕢昳㉢攱〷戶慥㕣㠸慣挸扥慤戵慥昱㤰㑤摤ㄶ㈰㔶㜶㈸敦扢愳戵摢㐵慢扡㘶㡦㕦㜷㜵昵〷㕢慡扤昹愰戶摣扥㜶㍡戰㥦慥搷㙥ㅡ搱㌸㤴摡扡㍣㝢搳㉣㜵㤵ㅥ搷昰攴㑡㉤戴㝤ㄹ摥㠸㌷敦㤶慦摡挱㠲㑤㤵㘸㔷㘴慡㌷戳㉡㤶晡㤱㌹ㅦㄳ㠵戴㔶㍥㥣挶㍡愷慥㐷㄰㘶扢㠲昱慥摡㐱戴戱㘸㉤㔷敤㕢㥡㥡攸㜷愲攲㔰ㄳ㝡扡㔶㕥ぢ㈷㙢㝥ㄴ搴慡捤㌵攳㤵㜵ぢ㥡愶㜲戶㔶戱扢扢㜳愲ㄴ愰㜰扢扡㤴捡摤摦㕥ㄶ㠴㄰㈹ㄲ㔳㤰㙦㙤㘶扢搱昳㤸ㅤ㘶㔱戵挹㤳挶㐷戶㜹ㄸ挷㉢㍡㈶㐳〲㔳㜳愲晤攰㑢敦摤收戱㜵捡扤户㡤つ㘳㈸㥥晤愹㜵摢㡦捥㔸㝥愵㙡〷㤹搶㑦㜱㐴收〰㐰晥〶ㄴ㐲摢搵愳愹㔳搷搵㐶晥㥡㕢㠹㔶ち㉢戶㝢㜹㈵〲づㄶ戲㔸攴搲㙥扡捣㥢㠰㌲昷ㄳっ〱㤴㑡戹挲〱㌶㉡㤴㜰攵昲搴㑥ㄹ戲摣愴挸搹慦㐹㤶晢㥣㘹户ㅡ搹㕡㈹て㌸愰㠸戶㙡㐲扥㝥戲㘸㘰㤵戵挱㌸攰㑣㠲㑢㉤搷㡦㌶ㅡ㜲扢㐹㑡㌴ㄳ敤改㠲㕤愷ぢ愸ち㥡昵㐱㠶慣㠱㘹㕡戴㐱㜶攳ㄴㄳ㔱っ㌲㉣㍢㥥摣捣㘴㙣㥦愱㈳搰㍥捤㠴㙣㝤愴扤㡥㈰戳㙦㘶㔲㜶㙡㉢㡦㝢摡㙣㉢㕦㕥㙢戳㥢戱㜰收㉤〴〷〹㙥㈵㌸〴愰晥つㅡ㡥㕡づ攵收换晣〰敥捤摢〹㍥〸〰晤㘴㔲攷挴慡㡡㍥搴㑥晣㐸戶敢㠷㥦㉣㑥戱㔶㐵昴㡣敢㝥㘶扦㈷㠴㡥扤捥摤㘱㙢扢挵挶㝥戴㍤㙦愶愷㐳㡥捣㘸㥡㥥敢㌶㑤搳ぢ挱愶ㅤ摡慤㍢搱搵ㅣ㈶昸㄰㐰挹晣㌰㈱㡣ぢㅤ摥㥤㜹昴㜴㈹摦ㄷ㙥㤱㜶㠶㍡㌴昰㌱㈳㜳ぢ㤰愱攴㌶㙤㕦昶㝣㘸扡㠳㈳捥晢摥㠷㍥摣㕥扥㘳愲户搸捤㍤扢挳㜸搱摢昴愲敦㠲㜸愹㝦㙥㙢㘳敥㐶戵昹㔱㠲㝢〰㕡㙣っ㜷摦㙦㌷㔲㈰㙥戱㤷愲摣㝥㐶㕤挴换㕤摣㔸戵挵〲昵㌹㡢㔶㜰搹㡥㄰挱㤸㤹㠲㉦㕣ぢ〲扢㡡㑤㙤㐵㄰摣扦ㅣ㙣㐶㠶搳㐱捤㈳㝥捦㐷づ摦ㄷ㠶愱扢摢攸捡戵昸挸ㄹ扥㘶㉡收㤴攲ㅣ摡攰〷摢㉢㠹㔴愷㘶昶㘲扦散晤攵㥥㈶改㐰㤳摣㠷㘵㌵敦〷㠰㤶㔰晦搸㔶愳ㅣ㘶戳㥦㤰㘶捤ㅥ㉢㈳㝣ㄹ扢㤳㤶ㄸ攲㈶㍤搲慢〳戶ㄳ㠸ㅦ㠴晤摥㠲敢搵㤵㐵慦㌷㙦〷㘵挴ㄶ摣慡㕤搲㘱㔹慡㥡㍤㕤昱㍥搱ㄵ㕤㕤㥢昶搳ㄹ昱㌵攱㤳ㄶ㉤㤱㈹敤㤹㤵ㄹ㝢昱〶㔳㌱っ㐹愵㤲ㄱㅡ慡㙢㈰㜲ㅥ摢敥愹㤸づ㔴捣〳㔸㌸昳〸挱ㄸ挱㔱㠰晣昷愰㘹㜶扡昰㑣㠷昵慣㌳愴扤戴㤴㉢㤲っㄲ㈲㝣戳慤戲㍡挶搷晣㈴挱挳〰㉤敥て〳㤰ㄹ㡣㈸㈴㑦㌱愲愴㌱㥣㡢慥㝤㡤㍣戰捦㐱㘲㘹㜲㉤㡣㙡ㅥ㌳㑢晤捥㔴敤㕣㉤㥡㜲挳㔵㘴愲㠶㥣戸㜰㘹挵昶挱㕤〱㝣㥦ㄶ㕣㙤㜵搵慥㤸捥㐲㙤つ慡㙤㘶㙡㌷㙣捣戱ㅣ昰㈵㘵㙦㙥㈸㕣㥤敤㡦昱〸㠵㤵㤶㜸㉢愳戱㍢㡡㝥㜳搳㌷搰㔸搱㐵㌷慡摡扤㡥ㄶ㍡㤶㡢づ㔶ㄱ㤹㠳㑡㡦戳戸ㄲ搸昶㔴扦㜳㍡㜰㉢㔵搷户㐹っ昸㤸㑣搶捤摡㤷㤱㈵㤸慦㌱〷㔸昳晢㥤挵挰昲挳㔵㡢〹挵㡤晤㑤㜷㤲ㄶ挹㍢ㄳ慥ㅦ攲㌵㐲㐵㤶〷㥣㠵㤵摡㌵㘴㙣搷㍣晦戴戵ㅡ敥ち慡㤰改昵㈵愴㔱㠶㌲っ㔵㌴㡡㥤搲㠷ㅢ昲㕣㡥戲搷㑤㈰戴捡攵ㄹ㌳捦戰摥昴敢攳ㅣつ晤㜴㡥愹て搹愳㍡戲㉢㔳ぢ㔳㔲捤攳散昳㌱㠰㑦㥥扥㌰搳挸捣扤愳㥣㜵㥥㔱晥っㅤ㉦㙣㔱㑦㠴㌰㐶户㑦戳ち㜱攴ㅣ㐸㈰㈸捥扢㔶昶㉢㌹搲㠶摣户慦㔱㥣㐶㈶愹捦㤹戵㤶敤㉡昲搱㥥ㄵ敤搳㌷㜴㘳㍤慢ㅡ挶㜵㤳㌵捦戳挸㕡㘴换㠵戲㐵づㅥ㕦㡢㙡㘷㕤摦㜴〰㠴晦㘲㤴㜵ㅤ㈸敢扡愰晡㥣昳㑣つ㑡㤹捦慡㕤戶〲㌷㕡昱摣㜲㤱㌷㑣摦敤ち㥥㠴㤰㔳昳㈶㔷愲㌳㠶㕢扣昹ぢ㜰搹挲㔱㤰㝢ㄴ㝡㤴㑢㐷昲㠳㜳つ㔵挰㝦慡挳挰ㄲㄴ㡣㐴㑡捤㥦挶搳昲㜲㍡〲㉡㐷慥ㅢ挹ㄹ㡣ㅢ捦〱愳㤵㄰愹㥥挱㈲㠸ち愶㤴㍣㐳摣〵攷㠲敦㐶愰ㅥ㈹㌶敤㐶㔳㈱㐸づ㠰愲㙣㙦㙦ㄳ慡愶㍡㡤搴慤挲㥤㥢慢㥡捣挴ㅤ㥢敢搳㜶攳㈳㕢㔴㙢㡢㤲㌲㈴摢㌵ㄲ换戲挵ㄸ㜷㤳愹㔱㘲戸ㄳ㙢愳戲挲愶㡤㜵愷ㄶ㜹〷㠶㐹㜸㈶㘷㝥㕣ㄸ〵㠹摥搸㐶㌱㘶㥦捤ㅥ愹㡣つ㝤㠰ㄲ敤㤴挶昵挷㈹挱ㄹㅣ㍢愹搸愵昸づ昲扤㉦㉥捥慤㐵㑤㌵搶昵愱戸㘶扣㕡㥤昳攱㈵㤴慤愰戲㑢㐴ㅡ㜳搳ㄶ㐶愴戳㔳敢慦㤷㌷㈵㠸戱ㄸ㌲㉤㤲ㄱ〷㠶ㄸ㐲戸㔲ㄹ㔵㝡㘷晤㕣敡㍡扡挸扢戳戶攵ぢ〵ㄶ愲捡㤴扤㉥㙥㔸挳㤳ㅦ㤲づ昵摤愲攸㔱搳ㄹ㕦づ㘱搲㈳敡昱戸㈴〲㙥㍡攷ㄹ㤶挲㈱〶愸摤戸㌴㕦㡥㤰摡慤㍦㠰㍢㠳摤㐳ㅤ慣㠸㑥㥤搰㍢愳〶㉤㘴㌰㙥昳㈴㈸㍢ㅤ㔲ㄴ㡡搴㤱敢扦㑥慡慦扦挸敢㜷㑥收㤲㐲㉣㐴㑣㜷㘵㜸て㈰㙥㍡㌳㐹㈹ㅡ㑡ㄲ收㕡戳㠹搲敡㑢㜰㜴㌱晡改昲〵ㄱ㑥昱㌰㤷㌵㐰戱愹攲㥣㕢攴挲㥡㔶㌷昶㌹㌳㝥戹扡㔶戱挵ㄴ㈷扡㕡㉣昲慥愰㤷ㅣ〱搴搲㤴戱㉥昱愲捣㘰㉢挵㈹㤳㐸㥤晢摤收㐹㜴ㄷ㈵㠷㘷㘸搳挷〴㘴㐶㔸㑥ㄲ㘲㥢捥㈹搰㍦摣摦㌸挰㈰㠷攷愰搲㌶愱愸换㘶㜱ㅥ慦㥥㐵ㄶ㘹㑢㌵㥢慤捤搶攸戳愷㔰㘷㕣㡤摡ㄵ㌴挲㍣戵挲㉢ㄴ攰㡣㜴㈸ㅤ㝣㐸敥㐶㥣摤扤昱㥣摣收㙥㠰ㄴ㐲〱挵ㅣ㉦㜷㐱㌹慣㉡〴㠹づ户搱昰扡ㄵ戳扦昴扣捤㜱〰挵㌴㌰ㅤ㕡戴搴づ捥㈴捡摢㍢㌸㜷愲㔵㐶㠶㌴㥤㑣㘵㡥㜲〸〱㝢㄰つ搲挴㡤昴㘲つ㐶㈸㍡㈰〷挳㤲戳㠹㈳ㅥ戶㐰戵攰㤶ㄶ攴扣ㄵ攱昸㡢㝦愸〵㍤㕥愹搰摤㐵㝣㙥㔷㔰ㄵ㐷㌷戴㍢㝡愰攵㔰㤶捣㠹晥摤㕤㉤ㄵ昱㘱挱愳㔳愳㘷慣愸扣戲㄰㙤攸㠳㕢㥤戲㐴晥摢㠸㐷㙣昹㜶晡捣摤㍥て愲慥㜳敤㑢㔷晤摡㌵㕦挶㤵て㜹敡てㅣ㠲㈳㤴㍤ㅣ㘴㈹昷㘳晣㈷㤷㤱换晦〹㥥戸㤳㘱昳〱㡤〰〹㥦㈳㔷挹㥣挶㕦㈶愹㠷昱㌷㠳㔷攰扦搷㑦づ㤰㔷づ戴昰㡡㈸㠳㍤㘶昱㉦扦㙢捣愲摥〰㘹挹㌰㈰㜸㜲㐸挴挸愹搷㜱㐳愲㠳〶㈰㥣㌹㐳〸昲㝤〸㝦㌳挸㈷ち㍤㍥敡挱㠳㈱晦㝦㈸㤵㐸昵㤶㘲昵扦㈰搴敡㌵㄰㐳挸〴㥡搴攵㔲㝤慢㤹㑣戳㥡㑣㡡㐷㐲㐴㤶捦愲㤰㕣㜹愶㙡摦㔶㔲㥣昳摡摢㡣扥攷㠷㝦晦て㌷愳㜳㌱㜳㠸扦㠶戴摢摤戸慦扢ぢ㕤㥢摣〵㈶昲挵㕤㤸㐷㐱㌱愳慦摤㠵㌸ㅥ㜲ㅥ㠸敤摤〵收昹㌲㥣挲㔴摡㌵ㄵ攲攰㙥散ㄶ㡦戱戲㌳㌸㠴㙢㠷挸敤挳㠰㠵㤳㠸㑥ㅤ摣㡣㥥户〲换㍢㈴昸搳㠱つ挳ㄶ㉣攲㔴户㜴㘱㡦摢戶慣㤱㑥㕢挴㉤㤲㠸晢㕥㙣㘵㘷㘷搹㐱㈹㝤改㔰扥㉡慡挲㍢㠸㥡㈸敥㈱㜲㥦㌹昰〷愷晦攵㤹㉦㥣攴挹戵㤸㔷昳㑣ㄵ㜷㤲扥愷㕦㠱〴㙦敡搰挸捤晣㐸攷㉣㍥㔷㜲㔷慢昶㠴ㄵ㠸㐷ㄴ㥡㕥㔲搴㡣㤷㘲㑣捤㝣扢挱摤挴ㄹ〸敤㙥㡥戶㠴㍥攵㈳㈷〹ㄷ㡥愶〶㉥昱扤㈴㠵愸摡ㅡ戳づ㍤捦晣敦挳ㅣ扤捤㠱㌴㝢㡣摣㠱昲㔲敡昷ㄲ㝢愷ㄱ戹摣㌱㔸㌴扤慤㔴㍣〲㤰㘸㈹攴㈲挸㈱改㑤つて〷㠸㤶扡㠰㐲晥〱㠰㡣㉣㕢㙢扡㤷戱㠱㍤㈵㘰搷て〰㜶昸㐱ぢ㔶ㄱ㔴㑣攲昲㥤敥㙥ㄹち㐸㑣ㄳ搳戶攲搳㕣㐴㐱㌶㌲㐴㡣㈵搸㑢㈸㈴㔷晥㈸㑡㍢づ㑤昱㈵晤㥥㑥挲㘹挱捥㝢㡣扢㤵扣㔳晥ㅡ㑥㠱挰捥ㄴ挴㘰昸晢㠹挶收㔴昲㜵扡㘹㐹愳〸〷㜴戱摥愹㌷慥㠲捤昲て㘱㠷㡡㐴㈰扦ㅡ㘲晤㐸攳搱㌷户搶搰挶昹㍤㤸㈰㝦昰扦敥挸㄰㙣扣㤵ㄲ〳つ扢愳㔶㐵㝤㔴晣㌱㜴攱愴㜳捡㙣ㄴ攵㕥㌱㕦㥤㐸㔶㤷戱挹晥㌳㤳㉤㤲昵㌸㝢㌳愵摤㘴晦㥦〰㘲㕢晢慦㡥戳㉦㝥收㤳㜱㠱㌷㜹收㔲戶㑤摦㜰㐵㄰攵㐶㈲㐷㌶挹愶ㄴ㤹晥搶愵〵㝣挸慡慢㐵㠳㈳〶搶摤㝡㑣愲摥㤷扥㙤㙦㕢〵挸㍣㔱晥户愱㠲摡昶㙦搶㕢挹㑥户昰戳攸㜸攰慣㕢づ㙡㘱捤㠹㠶ㄷ㤰〰ㅥ收㜷㘸づ㝣㥥㜱昵㙡慢㔲扢ぢ㉢搱昷ㄴ晡㥣㥢㠳挲㍥㘷㐷敦㔶㕥㤲㔹㠶㥤㘵㌵昸㑤搲㘰㉡搵㐴敢㄰摥攴㍣扡㘶㔵昱ㄹ敢ㅣ攲㥥ㄱ㔱扢挲搸改攸㜳敢㘹つ㉥ㅤ捥㙢㝤ち戱㈱扢㍡㡡㐴㤹㑣攱㠹㑦㜳㕤㕢搷愰戹㙤㍣户㤰㉤㍢㡢扦㤵昲㉦㠳愶㍢㝢㑢㌳换昰㥤晣㍡戹㘴㉥ㄳ㘲㜳㝤ㄲ㝦㜷ㅥ慣攵搳㠶挰攷昱挷摤っ㡡㡤㔴ㄱ㑡摢㐱㈶扣㡣慥㙡㥣〰㍦戳ㄲㄷ㜸愳ㄸ昱愳㈸慡㙦㘰㕡ㄴ〰㤴戱〷〴㘸捦搵㉦愲㤹㡥㈰戰㌱㉥㜲戵㥡㐶㐱㥥扦㠲〲晤㌶晥ㄴ〳〹㠲㜵搳㔸敥㕢〵㝢㈵㠵ㅤ㑣㌶慦㡡扢ㄴ㌲㜴㐹晤㍡㕥昵㌲㝥㝡攱慡挴㘱搷㈲扢ㄱ㤴捤愴〷捡㌹挵摤㠸㑣攵〵㜴愸㑦愵〶㙣晢愹㝣ㄵ㑤㌷㑦㠵㝥㠴っ㉦晤晣挱挴づ㤹〱慡捤㤰㈰㈲㔸〳ㄸ㑣捣搱〰㌵㉣搵㔶㐱㘷㉣摥㈰㤱㜱晤㝤晣昷慤㤳摦㝢㤳搷㝦㥥㔴愲㔳㔱搵㍣ぢ敡㔴㤹挵㤷搳戳戸づ㙣晢㔹㝣㘹慢㔹っ㍥㠹㍥ㅣ㠹昹っ㐰㝦㤷㈲摢挹慣㍥㠳〲ㄷ㤴㍦㔵㑥戰㑤㜳㈵㡦㐸摦㥦㐳愱扦㙢㤰㌴㘵㠰挷晣㜹㠲攷〸㥥㈷昸㉣挱攷〸㍥て搰㙦っ㤲捣搲昰ぢ㐴㝥㤱攰ㄷ〸扥㐴昰㡢〴㕦〶㐰㐳㔲㕥ㅡ晥ㄲ㤱㕦㈱昸㘵㠲㕦㈱昸㔵㠲㕦〳攸㌷ㄴ㠹㉥挳晥㉡ち挹戰昳愴㐱挶攷㑡攲攵昱㘸㈷㕦㔱搰攱攵㠲戶敤㐵㉦㡥㉢敦ちつ㠷㈹昱晢摦戶㠶愹搰攱㤹〵㔵㑢㜸攲捣㤹㌸慡㤷㌳攲㉣ㅡ㜸㔲㈷ぢ挸挳㕣㐸攵㈷㡤晦攸戵㐶戰〹ㄵ戸挰戸扡㌱㜹㕤ㅡ㝢㐹攳愳昸捥㑣摡攰挹晡㝡㉢㘹㑣㤹㤰挶搵愴昱㝦ㅣ㍤㔴㙦㥣㠸㠰㝥㜲㥥晣㤹攱戱换ㅥ㈶昵捤昹〰㥡攷ㅤ㝡〱扤㡥㐶㔳晦㑢㌲扣㉡㝥㐰ㅦ㡥户〴昸敡㝢ㄶ愷戵㜰愸〵愶㐲晦攳て㌳㌸挵㌵㘵㐵ㄶ㍥敡㕥㐷晡㍣㌰攵㡥㥤ぢ捥㕣〰㐴㡦㌳ㄳ㘲㘷㔸搹㔵㉣〲愷愶㕢慦敦㌶㘹㠶っ〷戸戱ㅥ㐹摡捦攰愹㤸捥㑣愰愴㡡扡搵㤵㠴戲戹攷ㅢ㍣㘳㝥つ挴㠱㠶〶㘴挱晣つ㐰㥤㕡攲昹敢摣㈰㔵㡦攸㤵慦戳攲ㅢ〴㉦〱㤴ㄴ昵っ昹愰昰㥢〰〳挹㍦扤㌱扣㉥㔱ㅦ㐳㉤㈷㉦㑢戳㤱昹㌲㍢扣〲搰㠵㐰戴㡡㤹戰㘴扥ち㑣敡愵㜹敡慣㥦㙡敦㔵㜳搳㥣晣㜳〰㐸㤰㌶㝤昷㝦ち摦昱㙦昰挱㕤昸㘷㑣昲戲〵攸㌶㍥搶搹戳挸㘸昴摥攵昷㘹㑣攸ㅤ㍣㠷ぢ摣挸扢昰㠹搴㡣㈵㐵捤捣改慡㈷昱㝣扥㠳捥㝤㐹㍤㥦愰㥦㠸搱㍣㠴㔲㔲㥦㑤搰㍦ㄳ愳てち晡㜳〹晡昱ㄸ㝤慦愰愹攱攵搹㡦挵攸晢〴㑤㐵㉦攸㑢㌱㕡㡦攴㡢〹晡㘲㡣搶㈳愱㌱㤰搶ㄷ㘲戴ㅥ〹捤㠳愰ㄷ㘳戴ㅥ〹つ㠶愰ㄷ㘲戴ㅥ〹㑤㠸愰捦挷㘸㍤ㄲ㕡ㄲ㐱㍦ㅡ愳昵㐸㘸㕢〴㍤ㅦ愳昵㐸㘸㙤〴㍤ㄷ愳昵㐸㘸㝦〴㝤㉥㐶敢㤱搰㈲〹晡㙣㡣搶㈳愱㡤ㄲ昴㙣㡣㤶㤱っ搲㔴〹㥢㝦ぢ〵昳㌵㠲㍦〶㈸攵扦〶戸㘳㌹㈵㤱㍢昴昸㕥㐷㔷㐵攱攳㌳捣㌷攲〲㙦ㄴ㈵㑦㠶㍣ㅤて㤹摥㐶搱㈸㈸㑡愳㔴㥣㡡㉢㑥㐸㠵㔲㤴㔰愹㤸㡡㉢㑥〲㘱晥㈹㠰愲〴㜲㑥收㥦昱敥㔵〲摥㝤㈷㉥挸ぢ戹〶搲晤ㄳ㉤㉦攴扡㐸挵挹㤶ㄷ㜲慤愴攲攳改ㄷ晥〵ㅦ㉡ㄳ㐳愱挹㘹ㅡ攴〴㘵扤晦ち㠵晥慥〱㡥敤ㄲ㝥挶㜵㔵㝥慡昲搴㔳㍦ㅣ攸ㅥ扥慤晢戱㑦昴扤昸搶摦晤攰㠵敦㍦㜹攲摦㝦昴搲㑢摦晦搷ㄷ摥晣搱户㤷㑦㝣昷㥢摦晣换㑦扥晣收て昶㍢慦ㄸ慦晤㜰昶㤵㘷挷慥㍥晢戴㜳攱晥搳捦㍥㝥攵搱戱昹㥢㐶扡扡㝡㝡敥ㄹ晡㥢㕢敦ㅤ㝣晥改搷搵㥦晦搳㐱㕦挹㜴昱㠲收㘱㜰摡㌲㡣敦愲㠰㘱㜰挴敦改㌰㌸㕤㔹愸㐷攲㠵㥡〰愲〸㘷㥣〳㤰㡡㠷㥢㉢㝡晦〷㉣昲㔸愵 | B27: 㜸〱捤㝤〷㝣ㄴ搵昶晦摥㤴㈵戳〱戲㠰〵〵㈴戴㠷㍣㤴㈲㈰㈲昲㈸愱挸〳愴〴㐴㔴㡣㈱搹挰㤲戲㤰摤㔰ㄴ〴㐵挵挶ㄳ㝢㐵愲㔸㥥搸㜸ㄶ㄰ㄵ晢戳愳愰㠸㕤ㄱㄵ㥥㈲㡡㘲㉦昰晦㝥捦摣搹㑣摢㈴㍦晦收昳㜱搹ㅣ敥㍤攷㝢捦㌹昳㍤㌳戳㜷㘶敦敥〶㔴㈰㄰搸㡦〷晦攷㈳㠳㡤搶昹昳攳㠹㐸㜹户扣㔸㔹㔹愴㈸ㄱ㡤㔵挴扢つ慥慣㉣㥣㍦㍡ㅡ㑦愴〳㄰㉣㠸挲ㅥ捦㉣㠸㐷捦㠸㘴ㄵ捣㠹㔴挶〱捡っ〴戲戲㡣㌴搸て搰㝦㘱慢㘳㜰㤴㤱㐱〱㔴挰〸㔲㌴愲挸愲㌰㈸㐲ㄴ搹ㄴ㡤㈹㥡㔰㌴愵挸愱〸㔳㌴愳㘸㑥搱㠲㠲㘱㡣〳㈹づ㠲㘸㝣㌰挴挴扣㈱㘳愷捤㐴搲昹㠹㔸㘵攴㠸摣ㄳ捤搴〶昴散搹慤㘷户愳㝡昵敢搹慤挷ㄱ戹㜹㔵㘵㠹慡捡挸㠰㡡㐸㔵愲戲戰散㠸摣㜱㔵搳捡愲㐵愳㈲昳㈷挶㑡㈳ㄵ〳㈲搳㝡昴㥡㔶搸晢㤸㥥扤晢昴㈹改搷敦㤸挶㉤攱昹㠴扣㈱攳㉡㈳㈵昱㍦换攷㈱昴㌹㌶㙦㐸户ㄳ㈲㠹㍦换攷愱昰〹㤷㐳㘳攵㠵搱㡡㍦挹㘹㈶㑢搷㙢㘸愴㈸捡ㅡ㐷㈲㤵搱㡡改摤㤰戶㠳㘸昴晡㜶ㅢづ挶㡢ち攳㠹扣㐸㔹搹㠴㐸〹换摢戸㥣㥣㐵㉡㈳ㄵ㐵㤱㜸搳昲㘱昳㡡㈲㘵摡ㅣ捦㉡㍦戱戰昲㠴挲昲㐸〶ㅢ㌹攵㘶摤㐶ㄶ㐷㉡ㄲ搱挴晣㈶攵㤳攲㤱〹㠵ㄵ搳㈳㠴㘴㤶㡦愸㡡ㄶ㘷㘴愸㡣㡣㐰㝡㘷扦㘴愴㌶摤㠶㔷ㄶ攵捤㈸慣㑣㐸㡦㔵敢改㠷戵敤㈱㤲戸㈳㉤敥㐵戹慥㔱㉣㔳㝥戴㝣㔴愴戲㈲㔲挶㈰㉣㕥㔷ㄷ㐸㌸㌱愹㑦㤲㘳㙤つぢ愳戲昵㘱挵㑤㘱ㄴ愳ㄵ㐵㙢㠸㘰ㅢ㠸〳㠶ㄴ挶㈳戹㜹ㄴ㐷收づ㡥挷㈳攵搳捡收ㅢ㠷ㄱ搳ㄶ㐲㘵㙣挳㜱㙡昷挱㘳㈵慤愰㌰慤㘰㕡㕡㐱㔱㕡㐱㜱㕡㐱㈴慤愰㈴慤㘰㝡㕡挱㡣戴㠲㘸㕡挱捣戴㠲㔲㘰慣㐷㔶愳㐶㘹晡㔱晤挱㠲晦〶㐷攵ㅥ㝦搷晢㥢㔷敦挸㕤扥㐶昱搰㤴㘳戴ㅤㅡ㐶㝢㠸㘰〷㠸搶昶㥣昲挶づ换ㅤ㔱ㄹ㉤捥捤㡢㔵㔴攰㄰㌳㍡ㄲ摢〹㐲愹㜷㤱ㅢ昳ㅢ㌳攰㠷晢扥晡捦㠹㜹㡢㘷㍥昵昳㜹ㄳ㉥扢㕣昱㜰ㄷ挷㥤〹㍥ㅣ㈲搸〵攲㘰户攳㌱戱ㄸ昷㉣攳敦㠴㜵㠵㔰㙡㡢昶㜹敤摥敢晢户㝤攳敤㤱ㅢ攲ぢ愷戴扥愴挵搳㡡㘷て昱㜹㈴挱摤㈰㠲摤㈱ㅣ〴㌲搹戱攳㠶㥤㘴昴㈰愶㈷㠴㔲慦㙡㠷㔷㝣㕡㍥㜴捡㐱㜹㜹㤷㑤㉦扤㘷㐶扦㘷ㄷ㉢敥慡攲戰ㄷ挱扤㈱㠲㝤㈰ㅣ㐹づ慤㡣攲㍣㠷昳㐵戴挲㌸㥡戰扥㄰㑡扤愰㝤扥昵搶慣㙤㔷㌷愹ㅥ㜲捦㌷挷敤晡昷㌱㤹㡤ㄴ㑦㙣攲戳ㅦ挱挷㐲〴晢㐳戴㜴㙦昸戸戲挲㐴㐹慣戲摣㌸㡥戸〱㄰㑡㍤慤㥤㍥搷㘱敢㙢捦㥥㝤昳昰扢㝦㉢㜸收戲昰扤ㄷ㈸㥥㈸挵改㐰㠲〷㐱〴〷㐳㌸㥣㡥慣㠸㈷ち换攰ㄵ㠷慢㌱㠴戸㍣〸愵ㅥ搳㑥昷㙥㥥㝢敦㔹㜷摤㍦昸戶攷扡㑣ㅦ戲改㡢昳ㄵ㑦扣攲㜴ㄸ挱挳㈱㠲㈳㈰㍣戵㜷㌸㍥㥥搸㤱㄰㑡慤搵㡥摦㝤㜰㝡捥㈳㙢扥捣扢慣昷ㄹ扢㑦扥慤晦挵㡡㍢愸㌸ㅥ㐵昰㘸㠸攰ㄸ㠸ㅣㄷ〵挶〹㌴㡦㠵㔰㙡㡤昶戵晤改挷㕢㠶挷扤㜲晣〵换づ㥢扢㘶㝤晢戵㡡慦〹攲㙢㍣挱ㄳ㈰㠲昹㄰㘱扢㉦愹昷㐴摡㈷㐱㈸戵㕡㍢㙢㍦㙡攴搶愷捦㔹㝢挲㔵㉦捦晦愲攵搹て㡤㔴㝣㙤ㄱ㘷㤳〹㍥〹㈲㌸〵挲戳挵㈳㉡㘳昱㜸敥㤸挲捡改㈸晡挹挴㥥〲愱搴慤摡昱㌳〵愷扣扡扤搹扤㐳敦搹搹㘹搵挲㘶敢㥦㔲㝣扤ㄲ挷㔳〹㍥つ㈲㔸〰攱搸㌳㤳〵㍦㥤㤸㐲〸愵㙥搲づ晢摤昹挳㑤扦㐴㤶㡦戹㌵晣㑣㡢㜹挶㤷晤ㄴ㕦晢挴㘱ㄱ挱挵㄰挱〸㐴ぢ晢㘶㕢㠷㑥〹㈱搳㈱㤴扡㔶晢摢晢攲㜱攳慢〷㝦㌴㘴晤愲㠹晤慢㡥扤㙡㥣攲换愸昸㡢ㄲ㍣ㄳ㈲㔸ち㜱愰摤ㅦて㥤扣挱㍣㜶捡〸㉡㠷㔰敡㜲敤㜱昵戳㠷㝣昸敡㠵摢㐷摥扦㙤㕥摦㠳㍥㕡戴㑢昱㌵㔹㍣挶〸㥥〵ㄱ㥣つ攱搸㈵ㅤ㘷㡤㑡攲攲㄰㑡㕤愲㥤㙥㍦攳戴昵㝢敦㙤㥥户㈴攳挶㑥慤㌶摦扤㕤昱㌵㕥㥣㔶ㄱ㍣〷㈲㌸ㄷ挲攵搴㔶㥣㜹挴捤㠷㔰敡㝣敤昴㠳挷〷㠴㐷㍣摡㙥昸㘵㑢㠷㍣㍦昳换㠷㥦㔱㥣㌳㠸搳㌳〹㕥〰ㄱ㕣〸攱攰ㄲ㉦挶戹㠳㠷㡤㌳捥㈲㘴ㄱ㠴㔲㡢戵扦㘷昷㤴㕥㜴搳㤶挳㠷㕦扤㈴㤸扥㝥敤㤵㉦㉢㑥㍦挴摦搹〴㥦〳ㄱ㕣〲㜱愸㥢㑢㌹㜳㤸㈷㡥㜳㠹㍣て㐲愹㌳戴摢戱㠷摥昸挱敦摤ㅥㄸ戵散㠲昶㤹敦㜶捥扡㐹㜱㐲㈳㙥㤷ㄲ㝣〱㐴昰㐲〸挷戶戳㐴挹㤷㠸㡢㠸扢ㄸ㐲愹㠴㜶晡改愶㌵㥤㐶扦㥣㍥攸ㄲ昵㡦㡦㜷摥晥搳㑣挵〹㤲㌸㕤㐶昰扦㈰㠲㤷㐲㌸捥㜰ㄳ㘳㌸㙦攸捡㉦㈷散㌲〸愵㉡戴捦搲昷㡥㝥晢㤴ㅦ戳挶晣攷㠶〷搷晦敦㡥㘹㙦㌷扥〲收昱晡㌵㙤㘸㘵攱㕣㥣扥㙢收ㅣ㐷㜵敢挱㝦㜵㑦戶㌰搷㉡改㔳搲户愴㘷捦攲㍥㍤ち㝢ㄵ㘶昲㔵戱扥㉦昱㉣㐱攳㤲挹搱㡡攲搸㕣㜹捤㙦㕣㌲㍣㕡㤶㠸㔴㑡㈷愷〴晦㤹昳ㄶ改㌷㈹ㄹ㌶て㜵㈸㌲愷〷〷㤴攴攱㝣㡥搳㜹㘲㝥捤㥣㐱㑥〱㌵摤慥摡昷㤰㔸㔵㐵㜱扣ㄵ㉢敢㌵收㈷ちㄳㄱ愹扡摤㔶搳昶っ换挷㈴㉡ㄲ㤷㤴づ㜳扢㍣戱戰慣㉡㌲㜸㕥搴㌴户㜱㤹㌱㥤㡡㑤㑢㙤ㅤ㕥ㄹ㤹㥤戴㝡㌲ㅡ㡣愹晣ㅣ昱敤搹㑡搳㘴收㤵㥢㌷㈳ㄶ㡦㔴㐸㝡㕤换挷㐵㡢㑡㈳㤵昹ㄱ㕥〸㐴㡡㘵㔳て愴㐹捦改扡㡥慤挰㠶㘲㤶㔶摣摥慥㈵搱㤱㡡攲㐸㌱昲㥤〵㤶攷㑦㉣㥣㔶ㄶ㌹挸〱㌱㘳挲㜰㠸㐳㍤㍣㔶㔴ㄵ挷っ㈳㔱ㄹ㉢㜳㕡〶ㄷ捦㈹挴㍣戲㜸㑣慣㌸㤲㈱㡦㠰㈹㔵㈰㍤㕤愹挰攱㝥ㄳ㌲晡㡥㜳捡㘶摢㐹㌸㌱慣ㅤ㙣摢㠹〸昶㥤敡㈵㍤愳㘱摢挹㠸敦㔲㙢㈶昶㥤㤰攸ㅥ戵愲㝤㜶㔲づ㙡改㍣昰扡㑤㐰㝤㔰㠷戲〸㡦捡戴㡥愹㕤搶散㤷㜵㘴㙡慢ち慦晢㠸慥㠵㌴㜱㥢摣昷ㅡㄶ㥣㤶搶㐲㙦晤戰㌹戸㕡㌸扥戰愲戸㉣㔲㔹敢㔵慢㘲㐶挶㤵ㄴ㔷㔱㕣㑤㜱つ挵戵㄰㤹搳㜱㡥㑢挹㈸攷挶㙡㥥㥡㥦㌹㌷㕡㥣㤸ㄱ㥣ㄱ㠹㑥㥦㤱㠰づ㔷扢㔹㔹愴㥢搳ㅢ晥㍤㡢换摤㑦ㄴㅡ挶昵ㄴ㌷㔰摣〸ㄱち〵㠲㉢昰㝦㈰ㄸ㌲㙥攲㝦㉢㈱㜲慣换愵㕣㜳捦っ〵㌲㜹㈹昰㝦扦㘰㐱㔰扣㐸昳愲〲ㄷ戰昱捣㜲昸㡤愷愷晢戱㜱㝣㘱㝣㐶㠲〷㘲慤挶㠳改慦㥡攲㘶㠸挶户㐰㥣㜰㝣愴っ㠷昱㥦㜵敤㥢挹㡢㥡㍡慦戱㌸〷㌸愸㍣㝦㝥㐵搱㡣捡㔸〵㙥㌴っ㉤㑣ㄴづ㉥挲㠵㘴㕣ㄵ〶换㐷挷昲慡ㄲ挱昲攳愳昸慦㜱昹㠴挸慣㐸㘱㈲て愷改㐴㤳昲搱戸〸㤵昳攸挸攲㜹㤹攵收昵攳搰㐸扣挸攰㠵收㐸㥣㤶收〵搱挲㜹戶㜱㌹㑦㌴㤱㜹〹扡㙥㔴㍥慥㄰ㄷ慡〹〳愰慥㌲捡㙣㜱㘴ㄳ搱㔹愳㐳扡〷て㘱㘹摡扣㘴㡢挲昴ㄴ攰㥥㠳㔷㔰扣昴㘶㘸改㍥㠲㈶㈵愲㘵昱㙥㥡摥㙥㐳㘳戸ㄱㄱ㤱㕢㉤愴㍤ㄸ挴づㄶ慣戵㔸敥〳㥤㔷慡㘳㡢愶㤹㙥㤱ち㘶戰㔵戳㜸戵晡㘷昹愱慦㠰戱ち㘲攵㌷慢晢㜷㕡㜱摦㝥晤晦㈲ㅣ㐲昲㌰摡㄰挱晤㥤㕤晣㈷て攳㜶晣ㄷ慡捤㤶搹ㄶ〸摦㌳㙤㡡㡢㙡㕥㕡㌶㉥挷搶㑥慣㡣挸㕤㠲㉣改捣㥦ㄵ㘹㔲㍥㌹㔶㔹㍡㉤ㄶ㉢㘵昱㥢㑡㉦㍥㈳ㄲ㐹昰㈸挹搶㜷ㅡ搸㔶㑡愵愷㍢慥愹㙤搷攸扣㘸て慥㠶㘸㌲戸慣㉣搷昲ㄸて摥〵㔵㍡㕥㔱㠲㜷愳搱㤶㔳㌱扥㈲㤵攵㡥㥢挱㙢昷ㅥ戸㝡敦搹愳㘷㙦摣㜱㥡㔷ㄶ㉦㔷昹㈰㠱㔷挶㕦㙦摣昹㜶扦㝥㑤㠷㕤㜸敡㌷戱ㄶて扣扥㔴㑤搰〶捦戵㜸㍢戸攵㈴挸戸㡦㘲つ挵㝦㈸敥愷㜸〰㐲㡤挶㔰㥥戲㡥㐲㠷㝦㌵㈷㥥㠷㠸㔹㑢戱づ〲㈷ㅥ㈹〴捥㍢敢搱つ㍥〲攱㍤敦愸昶㔰昳摣㘳㍣㑡昱ㄸ㠴敡〸挱愳㌴㘰㙣㠰㐸㔹敡づ㐴㜸㑡晤㈴戴㈱愳ㄶ㥢敡〴〴换㙤㤰㕥㠳㠴ㅡ㈴㔳昵搳㥣㜸挸㍡㐶ㅢ㍣昷ㄷ㍡㘳㤸㤰昵㈲㥤扣㐴昱㌲挵㉢ㄴㅢ㈱搴㔱㥡㉣敥戹晣慢㈱敢㌵㘲㌶㔱㙣㠶戰㤱昵〶㜵㈴㉢ㄴ㔰扣㘵㈱攴扣㐹攵㔶〸昵㜷〸㤳㥣户搰㑡㐹㑥ㄷづ昰㤰昳㉥戴㈱愳ㄶ㥢敡ち㠴ㅦ㌹㙤㔳㤱㜳㤸㌶㜸㙥㤴ㅣ〹㑦㐲捥㈷㑣攵㔳㡡捦㈸㜶㔰散㠴㔰㉤㌵㌹ぢ搱攱㕦つ㌹㥦ㄳ昳〵挵㉥〸ㅢ㌹扢愹搳攴昰摥㡢㤰昳㌵㤵㝢㈰㔴て〸㤳㥣㙦搰㑡㐹㑥㜷づ昰㤰昳ㅤ戴㈱愳ㄶ㥢敡〹㠴ㅦ㌹㤹愹挸挹搰〶捦㑤㥦㕥昰㈴攴晣捥㔴昶㔱散愷〸攰㝣㙤昰㜴慤昶敤㑢㜵㤸愵ㄳ挳㝢攵㐶㈶㠴㡤㥣㐶搴慤㠴ㅢ散㌹扤昱㥦㤰㘳㔰ㄹ㠲㔰㐷㐳㘵㤲㤳㡤㙥㑡㜲晡㌰てて㌹㑤㌱㈴㘴搴㘲㔳㝤㌱捥㡦㥣㕤搸㄰摦㜳搰ㄷ摡攰戹㝢搵て㥥㠴㥣㠳㤹㝢㑢㡡㐳㈸づ愵㘸〵愱㍥搵攴㜰㈶挵扦㥡㍤愷つ㌱㠷㔱戴㠵戰㤱搳㡥㍡扤攷ㅣ㡢㈱㐲㑥〷㉡㍢㐲愸攳愰㌲挹改㠴㙥㑡㜲晡〳收㈵攷㜰っ〹ㄹ戵搸搴〰㡣昳㈳㘷㜳㉡㜲㌶㘹㠳攷㉥摣㐰㜸ㄲ㜲㝡㌲昷愳㈸㝡㔱昴愶攸〳愱㕥㑡㐹㑥㕦㘲㡥愱攸〷㘱㈳愷㍦㜵㝡捦ㄹ㠴〰㐲捥〰㉡晦〱愱㠶㐰㘵㤲㌳㄰摤㤴攴っ〶捣㑢捥㄰っ〹ㄹ戵搸㔴ㅥ挶昹㤱戳㉥ㄵ㌹㙢戵挱㜳㌷㜱ㄸ㍣〹㌹愳㄰搴ㄸ㑤㌱㠶攲〴㡡戱㄰㙡㡤㈶㠷㜷ㅡㄹ户㘶捦ㄹ㑦捣〴㡡㝣〸ㅢ㌹㤳愸搳㝢づ㠷〹㌹㤳愹㍣〹㐲昱㘶愴㐹捥ㄴ㜴㔳㤲㌳〲㌰㉦㌹愷㘲㐸挸愸挵愶㐶㘲㥣ㅦ㌹㉢㔲㤱㜳愳㌶㜸敥㠸㡥㠲㈷㈱㈷挲摣㑢㈸愶㔳捣愰㠸㐲愸慢㌵㌹㍣㜵㉦挳㕦つ㌹愵挴㤴㔱㤴㐳搸挸㠹㔱愷昷㥣搱ㄸ㈲攴捣愶戲ㄲ㐲昱敥慡㐹㑥ㅣ摤㤴攴㡣〱捣㑢捥ㅣっ〹ㄹ戵搸搴㔸㡣昳㈳㘷㐹㉡㜲捥搱〶捦㉤摥昱昰㈴攴㉣㘲敥㡢㈹捥愶㌸㠷㘲〹㠴㕡愰挹㜹〱㐸扥捡㤳㥣㙤㌰攰㥥ㅡ㌱攷㔳㉣㠵戰㤱㜳㈱㜵㥡㥣〹㐰ち㌹ㄷ㔳㜹〹㠴㥡〸㤵㐹捥㌲㜴㔳㤲㤳捦ㄸ㥥ㄳ昲㜲っ〹ㄹ戵搸搴㈴㡣昳㈳㈷㥡㡡㥣ㄹ摡攰戹㘵㍤ㄹ㥥㠴㥣敢㤸晢昵ㄴ㌷㔰摣㐸戱〲㐲㑤搳攴ㄴ〳挹扦㥡㍤㘷㈵㌱搵ㄴ㌷㐳搸挸㔹㐵㥤㍥慣㑥挲㄰㈱攷㌶㉡㙦㠷㔰㈷㐳㘵㤲㜳〷扡㈹挹㤹〲㤸㤷㥣搵ㄸㄲ㌲㙡戱愹㔳㌰捥㡦㥣戱愹挸㌹㐱ㅢ㍣户摤愷挲㤳㤰昳〰㜳㝦㤰攲㈱㡡戵ㄴ敢㈰搴昱㥡ㅣ㑥〰昹㔷㐳捥㝡㘲ㅥ愱㜸ㄴ挲㐶捥〶敡昴㥥㜳ㅡ㠶〸㌹㑦㔰昹㈴㠴㍡ㅤ㉡㤳㥣愷搰㑤㐹㑥〱㘰㕥㜲㥥挵㤰㤰㔱㡢㑤ㄵ㘲㥣ㅦ㌹㝤㔲㤱搳㕢ㅢ㍣㙦㈱ㄴ挱㤳㤰戳ㄱ㐱㡤㔷㈹㕥愳搸㐴戱ㄹ㐲㜵搳攴㜸昷㥣㌷㠸搹㐲昱㈶㠴㡤㥣户愸搳攴㜰㤸㤰昳づ㤵敦㐲愸ㄲ愸㑣㜲摥㐳㌷㈵㌹ㄱ挰扣攴㝣㠸㈱㈱愳ㄶ㥢㥡㡥㜱㝥攴戴㑡㐵捥愱摡攰㜹㍦㈴ち㑦㐲捥㑥收晥㍦㡡捦㈹扥愰搸〵愱づ搰攴㉣〴㤲㝦㌵㝢捥㙥㘲扥愲昸ㅡ挲㐶捥㌷搴改挳㙡㈶㠶〸㌹㝢愹晣づ㐲㤵㐱㘵㤲昳㍤扡㈹挹㈹〵捣㑢捥㑦ㄸㄲ㌲㙡戱愹㜲㡣昳㈳㐷愵㈲㈷愰つ㥥户㜶㘲昰㈴攴㈸㥣㘷㡤㌴㡡㜴㡡っ㡡㑣〸昵换敦收っ搹㑢㑥㈳㘲戲㈸戸㈲挴㐶㑥㌶㜵㝡捦㤹㠵〰㐲㑥ㄳ㉡㥢㐲愸㑡愸㑣㜲㜲搰㑤㐹捥㙣挰扣攴㌴挷㤰㤰㔱㡢㑤挵㌱捥㡦㥣㥤搸㄰摦ㄹ昲づ㙤昰扣㐵㔵〵㑦㐲㑥㉢收摥㥡愲つ挵㘱ㄴ㙤㈱搴㌶㑤捥㝤㐰昲慦㘶捦㘹㐷㑣㝢㡡づ㄰㌶㜲㍡㔱愷挹㤹㠳㈱㐲㑥㘷㉡て㠷㔰昳愰㌲挹改㠲㙥㑡㜲收〲收㈵攷〸っ〹ㄹ戵搸搴㝣㡣昳㈳㘷㘳㉡㜲㕥搱〶捦㕢㙤㘷挲㤳㤰搳㠷戹ㅦ㑤搱㤷攲ㄸ㡡㝥㄰敡㌹㑤㡥昷㠴摣㥦㤸攳㈸〶㐰搸挸ㄹ㐸㥤㈶㘷〱〲〸㌹㠳愹ㅣ〲愱捥㠲捡㈴㈷て摤㤴攴㜰㔷昵㤲㌳ㅣ㐳㐲㐶㉤㌶戵〸攳晣挸㜹㈰ㄵ㌹昷㙢㠳攷㝤挳戳攱㐹挸ㄹ换摣挷㔱㡣愷㤸㐰㤱て愱敥搶攴㜸昷㥣㐹挴㥣㐸㌱ㄹ挲㐶捥ㄴ敡昴㌹攷ㅣ〴㄰㜲㑥愱昲㔴〸㜵㉥㔴㈶㌹㔳搱㑤㐹捥ㄲ挰扣攴㥣㡥㈱㈱愳ㄶ㥢㍡て攳晣挸戹㉥ㄵ㌹搷㙡㠳攷摤捦愵昰㈴攴㐴㤹晢㑣㡡㔲㡡㌲㡡㜲〸㜵戹㈶㠷㤳㐰晥搵ㅣ㔶㌱㘲㘶㔱捣㠶戰㤱ㄳ愷㑥㤳㜳〱㠶〸㌹㔵㔴捥㠱㔰ㄷ㐱㘵㤲㌳ㄷ摤㤴攴㕣〸㤸㤷㥣㌳㌰㈴㘴搴㘲㔳ㄷ㘳㥣ㅦ㌹㡢㔲㤱㜳㤶㌶㜸摥挵攵〵㠱㤰戳㠴戹㥦㑢㜱ㅥ挵昹ㄴ㑢㈱搴㍣㑤㡥㜷捦戹㤰㤸㡢㈸㉥㠶戰㤱戳㡣扡㤵昰㡣㕢ㄶ㝣㘳㔸挸戹㤴捡攵㄰㙡㌹㔴㈶㌹㤷愱㥢㤲㥣㑢〱昳㤲㜳㈵㠶㠴㡣㕡㙣敡㌲㡣昳㈳㈷㤲㡡㥣㘲㙤㜰扦ㅤ㥤㜹㈵㍣戹㙦慦换㥡慣攴ㅢ㜵戶户〰㥢〲ㅣ㉣㤹㔴ㄱ㑤挴戳㑢〶㔷㈵㘲挳愳㠹愱昱㐴攳ㄲ〸㌴㘵挸愱昲㥥㤶㙤㔰搷㤲ㄳ愳㤱戹ㄳ㜱㠳戹慤搷㠴攵㙡㜹㔵昱㐴㑣摥㌹㌸捣㙢ㅦㅡ㍢㈱㤶ㄸㅡ㡤捦㉡㉢㥣摦搱挷㙣㕡㈶捦㠸㔴攰㑤搶㑡扣搷㕡ㄷ㈸㌶㙢㔶愴搸㈷挷晣㔸㔵㘵㔱㘴攴搰扦挲摢戴捡㝣ぢ㈴㠰扢散㑡〵㔴愷搴㙦㑢摡㜸攷㕢㜵㘹戸㌳慦晥搸扢㝣挱ㄵ摣㜷㍢㜶捦㍢ㄲ㉢㙤㉡㈲〱攳㈶昴〳㠸㡥㥤摥㔸挹ㅤㄲ㙦戵㕤㔵攷捥㘲㝢ぢ㌸ㅢ攰㔰〹ち㙣敡㥡攸㌵〶㔸てㄵ㉤㡥㠴㜴㙦㑣戴愲愹㙥㡥慤㑡㌸㉣㠵昳㕡㘸ぢ摥㐸ㄸ㕢㠱㥤愰愸戰戲昸慦㔰ㅦ㙣ㄸㅥ㘶㜱㔴㄰晦晥ㄸ攵愶㥢㐰㘰捦㝥捣㑥昹搸戳〸㠷㝤戵收㥡㜷〷㝤摦搷㐹ㅥ㤸㘸搸摥㐱捦〱扥〹改㑥慡戳搸ㅢㄳ㈹慣㤰㉡攴㈷㡡㠷㐶收㌴ㄵ㐴〴扢㍡搶㡢㤶㐵㕡㌸扢昲昶㥥㔱㌲㜸㕡㍣㔶㔶㤵㠸㌴㑤戶攴㤰㌷㑡㈶㐴戸㐰㙥㑥愴㜱戲㌵慥㈸㠱昵㈲㐹㝦㕣改昰搷愹㄰ㄸ挹搰㔵㔲㔲愷㘰㉤㘷㍡攷㐶昰㘸晡㠳㔵㐵㌱㑢攴昱搵㐰㜵晤㜵㝣摣㌹㌰㘰㌵㐲㝣〴㌲慦㠱晢晡㉦㜷攰㤱搴挲㕡㠵㘳㥥敢攴㌴搶搸搲㜱愵㐱㤳ㄲ㌹〳㘲㌹ㄱ㤷ち攷昰搰㈹挳㍡敥㐴戴〸换ㅡ攷㌷㉤ㄹ㔹㔱㔴㔶㔵ㅣㄹ㕤㌸㉤㔲㘶㥤扤戱㠰昲㉦㔲㉦扥㉢愰㡦愸㕡㜸搱㙢㐰㐶㘲ㄹ扤戵戸攲て㥦昰㜰㕢㠷㘷扣ㄵ㠸ぢㅦ㈱㘳㤵㍥敥慥㠵攲晦扣戶㈴㠴㐱捤㙢㔶㐶挹ち㙣㥣摡㍣㉡㥥搳昸㍥㝢㜲㜹㡡ㅣ㜱㌶搸攸搸攸ㄸ㤶づㄵ摢㔴挷㐷㑤搵㕦收戸㤲㐳㉡ㄸっ晥搱㤷ㅡ㜰㠵挷㥥晤晡晦㐵晡晦㠱㝣㡤攱挱㜱㍤ㄴ敥㜷攸㙤㔳ㄲ㤹〵挸㐹㌰っ㘰づ捦㘰收ㄴ㘲㘲㌴㔱ㄶ挹㉥ㄱ扢戴戳㜸㐸㤰捤㐶㈵ㄳ㘷攰摤敥愱㑤㑡戸愶戲㉣㕡ㄱ攱㜴〴㑢搹戸敡㝤㜴㘴㍡ㄶ㕤㡤㡢挵愳㕣晢摢愴㘴㘲㘵㘱㐵㝣ㄶㄷ㌵ㄴ捤㙦敥攸㐹戱㌲㑢㠶㐴㉢㜰〰㤹㌱搹捥㈹挹㥦ㄱ㥢㡢㡦㝤㔴㤵㔷㡣㈸㥣ㄵ晦㑢ㄴ㑡扦愴㠰㈱昳っ㤸愶搲搲㔴㔶㕡搶ㅦ㝤慤㤲㌵〸㥣㄰挸㕢攷㘹㝣晦㕣㤷敢〶戴㙡㌹㘶㔹㈹扤散㡤挷㉣昳㜲㝣扥挱㜷捤㑤昲㜳㌳㍣てㅢ户攱搰㙣㝣㍢挴㍦㐷㑣ㅡ㔹戳㔸昲晦敢搳㈹㤹㌷挲㜳㉤㉦〷戲㙢㈴㔷㘶ㅤ〸㜰㔳㜳㜷愱㡥㝢㡦㈱㔵㘷捦扤ぢ㠶㑡〴挳扤ㄱ慦愰㠴戳㌹ㅣ㙢㘶ㅡ攳攰挷改ㄷ㙢㡤㜰摥㙤㙡㜶㌸戹㉢㉦㉣㡢㙢㕢㕥慣扣扣㤰扢ㄷ㜷捤㝣㥣扢㈳㔹㌲搳挶搹挴㈸㠱㤰㝤㔰慢ち攷㐱㔵㌸㑦㔴㜸㐹收㙡㑢㘹搳㔷㙣㝡㘱㘵㌴㌱愳㍣㕡㤴挵づ㔷㐴晥㈵昶㑢散㐲ㄹ㈰搳㝡挸捥㠹㘹慢㝢㕤㤳戹ㄴ〷攵敥㠶㉢〹㔲挷昲㘳敦㑤㤳搷㜱昵〷㤷戲㘱昷㌵㘴㥥晢㙦㜸攳慤㌸㥥晡捤㔴㙣㤳㌰㘸攴㐴愴㙥㈲〰㝦挶㥤㠰戲挱扦㡣㙡㠸㕡㔷ㄷ㌵〲㈰㌴㍡㔶㔸㍣ㅣ㡢㘶㘳㤵㡤昴愷愹戲㔰㕡㥥㔶㉡挳㕣㔱㤶㠷挵㉦㔸收㌹〷㜳攱捡㉣㉡昲戱㔶㉢㠳㙢搱㠲㘶つ㜹攰〶㌲㌳戳戳晣㘲㡤戴㝣㜵搴㉢㙦散ㅦ㍡ㅢ改昱晦攵昸㘳㜰㜶攵㘶㜱㉡㘱慣挶收ㄸ㜷㜱㥢㙥㐶户ㅡ㝦㉥挰摤〴摣〳㤱戹ち㐶昷㔱㤲㜲昵㔵㍡挰㤹攵㕣ㄵ㤶㔵捥捤挱㤴㈳㠸戵㘲㔸㕤〶㑡㠲搹㔹户挰㙥摣ぢ户ㅢ㕦㜹㘵〰摡〱㜵㍢㐴㌵晥ㄸ㥦㔷搰㍡挱晢ㄸ㝦つ㠴攲ㄵ㌹㉦㔱㠳晦愱㡡戳搶㜸昷搲挹㌳戰慣〷㝤搴㐳㉥㑦ㅥ㐰ㅢ㉦ㅣ㙡つ㔴扣㐴戱ㅥ戶㥡㘲㘲晤愰㐶晤〷㘶㑥慥㔹捤扡㈶㙡敡㝥攰㌸㔹挳㕢㈳㑣㈰㌹㕢㔸愷㥤㍤〰ㄳ㘷っ收㈳攵㙢㥡㝡〸〰扥慥攱摥愵㐰ㄱ㥢愷㔰摢㜹㔴慤㐵㥦攷㔲㘳㍤㝣慢㜵㘸昱ㄴ㠵㉣つ搹昶㐷愱慤㝢㤷㕤㉦㈳攰攴㌱㍡搱ㅤ昵㈸ㅡ搵昸㜳㤵㜹〳㌰挶攳〴㍥收て㜸㠲㠰㈷〹搸〰〰昷〵攳㈹昴㤲攵㝢搲㌶㡣㜷㔸㜴昹㥥收戰㘷㌸散㐵㈸愵㝣扣摤㘴㉦摦㝦搱㐷㝥㔲扥攷搰㘶昹㕥㠲㉡㜵昹㥥搷愸㤷㠱慡㜷昹戸㥥挹㉣摦ぢ㑣㈰㔹扥㤷戴戳㡤戰搷愷㝣慦〱㘷㤶慦ぢ㕡捣摣㔳扥㑤㔰㑢昹㕥㠱㙦戵ㄹ㍤慢㝣戲敤慦㐲㕢㜷昹摥㌰㝤攳扤㈶㍡搱ㅤ昵㈶ㅡ搵昸㜳㤵㙦ㄳ㌰挶㘶〲户晡〳㕥㈷攰つ〲摥〲㐰捡户〵扤㘴昹摥戵つ㍢ㄴ㙤㕤扥㌷㌹㙣㉢㠷㝤〲愵㤴敦㉤慡㙣㐷摦摢攸㕢攵㝢〷㙤㤶敦㔳愸㔲㤷敦㕤㡤晡っ愸㝡㤷㙦〷挰㘶昹摥㘳〲挹昲㝤愰㥤敤㠴扤㍥攵晢ㅣ㌸戳㝣摤搱㘲收㥥昲㝤〱戵㤴敦㈳昸㔶扢搰戳捡㈷摢晥㌱戴㜵㤷㙦户改㍢㘰㙣愷ㄳ摤㔱㕦愳㔱㡤㍦㔷昹㍥〱挶昸㤴挰㍤晥㠰捦〸搸㐱挰㌷〰㐸昹㜶愲㤷㉣摦㜷戶㘱戶昲晤㡦挳㍥攷戰摦〱㤰昲㝤㐱㤵敤摥捥㉥昴慤昲㝤㠹㌶换户て慡搴攵摢慤㔱㥣戴搷扢㝣愴挰㉣摦㔷㑣㈰㔹扥㍤摡ㄹ㕦㝢敢㔳㍥慥ㅢ㌳换搷〷攱㤹戹愷㝣扣㝥㤴昲㝤ぢ摦㉡ㄳ㍤慢㝣戲敤摦㐱㕢㜷昹ㅡ㘱ㄸ㥥〱攳㝢㍡㌱〳〵ㄴ搷愱㔵愳攳㉡摦て挰ㄸ㍦ㄲ挸㌵㙡㍥㠰㥦〸昸㤹㠰㙣〰愴㝣扦愰㤷㉣ㅦㄷ愶㔹挳㕡挳扦㍥晡㝥攵戰摦㌸散㘰〰愴㝣扦㔳㘵㍢晡昶愱㡦晣攴攴戹ㅦ㙤㤶㡦㡢捤㔲㤷㡦㥦㘲㈲敡㄰愰敡㕤㍥慥㕡㌳换愷㌰扣愶㝣㤸㤷㠸戳㔶戰搷愷㝣㕣搹㘶㤶慦㍦昲㘶收㥥昲㜱摤㥢㤴㉦ㄳ扥㔵㕢昴慣昲挹戶㌷㠲戶敥昲戵挳㌰㍣昱〶㉡㥤㤸㠱〲㡡㉢攵慡搱㜱㤵㡦㥦慤㌷㐲〴㜶昴〷㘴ㄳ搰㤸㠰㑥〰慣愲摦㈶攸㈵换挷愵㜳㤶㕦摢搱搷㤴挳㜲㌸慣㈷〰㔲扥㌰㔵戶愳慦ㄹ晡挸㑦捡搷ㅣ㙤ㄶ㠶换攱㔲㤷慦㠵㐶昵〲慡摥攵敢つ戰㔹扥〳㤸㐰昲攸㍢㐸㍢敢〳㝢㝤捡搷ㄷ㌸戳㝣㠳㤱㌷㌳昷㤴㡦㉢昳愴㝣㉤攱㕢昵㐳捦㉡㥦㙣晢愱搰搶㕤扥晥ㄸ㠶㈷ㄶ㑡搲㠹ㄹ㈸愰戸㤶慦ㅡㅤ㔷昹㕡〳㘳戴㈱㤰敢晣㝣〰㠷ㄱ搰㤶㠰㠱〰慣㠲〷㈳ㄷ扤㘴昹戸戸捦ㅡ㘶㍢晡摡㜱㔸㝢づㅢ〵㠰㤴慦〳㔵戶愳慦㈳晡挸㑦捡搷〹㙤㤶㡦ぢ昶㔲㤷敦㙦ㅡ㌵〶愸㝡㤷㡦㉢晦捣昲㜵㘶〲挹昲㜵搱捥戸㈸戰㍥攵ㅢて㥣㔹扥ㄱ挸㥢㤹㝢捡挷戵㠳㔲扥慥昰慤昲搱戳捡㈷摢㝥㈴戴㜵㤷㙦ㄲ㠶攱㠹㑦㤶搳㠹ㄹ㈸愰㈶愳㔵㡤㡥慢㝣摤㠱㌱㝡㄰挸㤵㠸㍥㠰㥥〴ㅣ㐵挰ㄴ〰㔶挱㠳搱ぢ扤㘴昹戸晣搰ㅡ搶ち㔶㝤昲散捤㘱㝤㌸㉣〲㠰㤴敦㘸慡㙣攵敢㡢㍥昲㤳昲ㅤ㠳㌶换挷㈵㠵愹换搷㑦愳愶〳㔵敦昲㜱㙤愲㔹扥㘳㤹㐰戲㝣挷㘹㘷㕣戶挸昲㤵㍤㍣愸㝣捦捦㐷っ扡㜹挵慦昷㑤㔹搱㘷㤰㜹愳昸㜳敢㘶㤸㉡〵捥㉣摦ㄸ愰㤹戹愷㝣㕣摤㈸攵晢〷㝣慢㜲昴慣昲挹戶て㠲戶敥昲㜱㌹㈴㥥〱㘳㌰㥤㤸㠱〲㙡㌶㕡搵攸戸捡㌷〴ㄸ㈳㡦㐰慥㤵昴〱っ㈵㘰ㄸ〱㜱〰㔶挱㠳㌱ㅣ扤㘴昹戸㐰搲ㅡ㘶㍢晡㐶㜰搸昱ㅣ戶〸〰㈹摦㐸昴㥡㈷㑦㥥戹昸㍣㔵敥晣㐸㘱㘵挰昸㈷っ㐸㔴敡㌸ち㙤搶㜱㌱㐶愵慥攳㘸㡤㍡ㅢ愸㝡搷㤱换㈸捤㍡㡥挱昰㥡㍡㡥搵捥戸挲戲㍥㠷攱㜹挰㤹㜵攴捡㐷㘶敥愹㈳ㄷ㘲㑡ㅤ挷挳户㕡㡡㥥㔵㐷㤲㘰攴㐳搴㕤㐷慥摣挴㌳㘰㑣愴ㄳ㌳㔰㐰㕤㡣㔶㌵㍡慥㍡㑥愲摦ㄳ〹攴戲㑥ㅦ挰㘴〲㑥㈲㘰ㄹ〰慢攰挱㤸㠲㕥戲㡥㕣换㘹つ戳搵昱㘴づ㍢㠵挳慥〳㐰敡㜸㉡㔵戶挳㜰㉡晡挸㑦捡㜷ㅡ摡㉣ㅦ搷㘷愶㉥㕦㠱㐶摤〰㔴扤换挷㠵㥥㘶昹㑥㘷〲挹挳㜰㥡㜶挶㌵愰昵㈹摦㑡攰捣昲㑤㐱摥捣摣㔳扥㙡攸愴㝣挵昰慤㙥㐶捦㉡㥦㙣㝢〹戴㜵㤷㡦㙢㑢昱挴〲㘷㍡㌱〳〵搴㙤㘸㔵愳攳㉡摦っ㘰㡣㈸㠱㕣㜸敡〳㤸㐹㐰㈹〱㜷〰戰ちㅥ㡣㌲昴㤲攵攳㙡㔳㙢㤸敤㉣㕡捥㘱ㄵㅣ昶〰〰㔲扥ㄸ㔵挹挳㄰敢㐵搰㐷㝥㔲扥搹㘸戳㝣て〲㥣扡㝣㤵ㅡ昵㄰㔰昵㉥ㅦ㤷愲㥡攵㡢㌳㠱㘴昹慡戴戳㜵戰搷愷㝣敢㠱㌳换㔷㠰扣㤹戹愷㝣㕣捣㉡攵㥢ぢ摦敡㔱昴慣昲挹戶捦㠷戶敥昲㜱昵㉢㥥〱攳っ㍡㌱〳〵搴ㄳ㘸㔵愳攳㉡摦㤹挰ㄸぢ〸㝣搲ㅦ戰㤰㠰戳〸㜸ち㠰㔵昴扢〸扤㘴昹㥥戵つ㙢〳慢㝥ㄱ㕣捣㘱㘷㜳搸㐶〰愴㝣攷㔰㘵㉢摦ㄲ昴㤱㥦㤴敦㕣戴㔹㍥慥㜱㑤㕤扥昳㌴㡡㡢㘰敢㕤㍥㉥㤶㌵换㜷㍥ㄳ㐸㤶敦〲敤㙣㌳散昵㈹摦ㅢ挰㤹攵㡢㈰㙦㘶敥㈹摦ㄶ攸愴㝣ㄷ挱户㝡ㄳ㍤慢㝣戲敤㤷㐰㕢㜷昹摥挲㌰㍣〳挶㌲㍡㌱〳〵搴㍢㘸㔵愳攳㉡摦扦㠰㌱㉥㈵㤰㡢㜷㝤〰换〹戸㡣㠰昷〰㔸〵て挶攵攸㈵换挷ㄵ扢搶㌰㕢昹慥攰戰㉢㌹㙣㈷〰㔲扥慢愸戲㥤㍣慦㐶ㅦ昹㐹昹慥㐱㥢攵攳㉡摣搴攵扢㔶愳戸㑣户摥攵攳㜲㕥戳㝣搷㌱㠱㘴昹㙥搰捥㜶挱㕥㥦昲敤〶捥㉣㕦㈹昲㘶收㥥昲㜱㐱戰㤴㙦〵㝣㉢慥っ戶捡㈷摢扥ㄲ摡扡换昷つ㠶攱㠹㔵晢㜴㘲〶ち愸扤㘸㔵愳攳㉡摦捤挰ㄸ户㄰昸㥤㍦㘰ㄵ〱户ㄲ昰㍤〰慢攸昷㌶昴㤲攵攳㥡㘲换慦敤攴㜹㍢㠷摤挱㘱ち㤷收㔲扥㝦㔳㘵㍢晡敥㐴ㅦ昹㐹昹㔶愳捤昲愵〱㥣扡㝣㜷㘹㔴㍡㔰昵㉥㕦〶挰㘶昹敥㘶〲挹昲摤慢㥤㤱搰晡㤴慦ㄱ㜰㘶昹㘶㈳㙦㘶敥㈹㕦ㄶ㈰㔲扥㌵昰慤っ昴慣昲挹戶摦て㙤摤攵换挶㌰昸挶愷㜵改挴っㄴ㔰㑤愰慤㐶挷㔵扥〷㠱㌱ㅥ㈲㤰ぢ愰㝤〰㙢〹㔸㐷㐰づ〰慢攰挱㜸ㄸ扤㘴昹㥡摢㠶戵㠶㔵㥦㍣搷㜳搸㈳ㅣ搶ち〰㈹摦愳㔴搹捡昷ㄸ晡挸㑦捡户〱㙤㤶慦㌵挰愹换昷戸㐶戵〱慡摥攵攳㤲㘸戳㝣㑦㌰㠱㘴昹㥥搲捥摡挲㕥㥦昲戵〳捥㉣摦㕣攴捤捣㍤攵㙢て㠸㤴敦ㄹ昸㔶ㅤ搰戳捡㈷摢晥㕦㘸敢㉥㕦㈷っ㤳昲㍤㐷㈷㘶愰㠰敡っ㙤㌵㍡慥昲㍤て㡣昱〲㠱㠷晢〳㕥㈴攰㈵〲扡〰戰ちㅥ㡣㤷搱㑢㤶敦〸摢㌰㉥戴搴攵㝢㠵挳㌶㜲㔸ㅦ〰愴㝣慦愲㤷㠵昷㡣扡㥢搷つ慦愱㡢昴愴㝡㥢搰㘶昵㡥〶㌶㜵昵㌶㙢㔴㕦愰敡㕤㍤慥搹㌶慢昷㍡㠶搷㔴㙦㡢㜶搶て昶晡㔴慦㍦㜰㘶昵ㄶ㈲㙦㘶敥愹摥㜱㠰㐸昵戶挲户ㅡ㠰㥥㔵㍤㙥扡昱㌶㐴摤搵ㅢ㠸㘱㔲扤㜷攸挴っㄴ㔰㠳愱慤㐶挷㔵扤㜷改昷㍤〲㠷昸〳摥㈷攰〳〲昲〰㔸〵て挶㠷攸㈵慢㌷摣㌶捣㔶扤㡦㌸㙣ㅢ㠷㡤〵㐰慡昷㌱㔵戶㤷扥敤攸㈳㍦㈹摦㈷㘸戳㝣攳〰㑥㕤扥㑦㌵㙡㍣㔰昵㉥摦〴㠰捤昲㝤挶〴㤲〷摦㑥敤㡣ぢ捥敢㔳扥㐹挰㤹攵㕢㠲扣㤹戹愷㝣㈷〲㈲攵晢ㅣ扥搵㘴昴慣昲挹戶敦㠲戶敥昲㑤挱㌰㈹摦㤷㜴㘲〶ち愸㔳愰慤㐶挷㔵扥摤挰ㄸ㕦ㄱ㜸慡㍦攰㙢〲昶㄰㌰ㄵ㠰㔵昰㘰㝣㠳㕥戲㝣㕣摡㙥昹㍤ㄴ㔶㝤昰㝤换㘱㝢㌹㉣ち㠰㤴敦㍢慡㙣攵晢ㅥ㝤攴㈷攵晢〱㙤㤶㙦㈶挰愹换昷愳㐶㤵〲㔵敦昲㤵〱㙣㤶敦㈷㈶㤰㉣摦㉦摡㔹㌹散昵㈹㕦っ㌸戳㝣㕣慡捥捣㍤攵㥢〵㠸㤴敦㌷昸㔶戳搱戳捡㈷摢扥て摡扡换挷愵昶㔲扥晤㜴㘲〶ち愸㉡㘸慢搱㜱㤵㡦慢㠳つ慥愲㔰㜳晣〱㘹〴愴ㄳ㌰ㄷ㠰㔵昰㘰攰ㅢ㐰㙢捡挷挵昷㤶摦㔶戰敡昲㘵㜲㔸㤰挳㤶〰㈰攵㙢㐴㤵敤愵㉦ぢ㝤攴㈷攵攳ㄷ搳戲㝣攷〲㥣扡㝣㈱㡤㍡て愸㝡㤷敦㝣㠰捤昲㘵㌳㠱㘴昹㥡㘸㘷㑢㘱慦㑦昹㉥〴捥㉣摦愵挸㥢㤹㝢捡㜷ㄱ㈰㔲扥ㅣ昸㔶ㄷ愳㘷㤵㑦戶扤ㄹ戴㜵㤷㙦ㄹ㠶㐹昹㥡搳㠹ㄹ㈸愰㉥㠵戶ㅡㅤ㔷昹㕡〰㘳ㅣ㐰攰㜲㝦挰㠱〴ㅣ㐴挰㘵〰㐸昹づ㐶㉦㜹昴昱攳〱㤶摦㌶昰慦换搷㤲挳づ㠱挸攴搲敤晡㉤ㅡ攷㔲㤵戰㙤㈵㍦ㄷ㌶挵㥢㤵㡣慦㉡㉣挳户挹㡥挵㈲搲〴㔵㝦㠵㤵㐳ㄹ收㔲㕥昷㜷摣㌹扦㘴ㄶ敢攱㘵ㄳ㑥㤹捡㑦㐸戹㌹㜰㘲昵戶挵㠹晣㘳㑢㝤㐳㤹㍢㝥摤扦扦㝥㔱戸㔷㌴㥡挳慦㑦㉡㈸〸㘴㌱㈶㡥㜴慣㑡㘹㠵㠲昱㈸㕡㠹㥡挹㉥搴ㅡち敢愱戸ㄸ摣愳捤扣ㄹ摡㕡㔶摣戹㔶挹㜲㝣㡢㥡昵㐱㕣〹搶戵㡣㕦㐹敤户戰挸戹昰慥つ㜲㔱慢晣㜲㔰户㔹摡戶挴㈰〴㌷㈷昳摦搰搶戹㤴㡢ㅢ㠸昵晦㔸搴㤵㥦㤸㕦㠶㠵㜴㙣昲㉢㠷捣ㄶ㔷づ㤹㘶㈴ㅤ慢挴㍢扢ㄹ敥㉦ㄹ㑢㡥扤〲慥戲て㜰㝤愹㥢っ愳攵㜶㘴㤳戹つ㈵㑡㌹㥥㠹搷㔴㠵㘳昸〸戶㐳㡡〷㡣㠹ㄶ攱㡢㑣㘳㈵㠹摣㝣㉣〸捤攵搷晣攱〳扡㍤〶㘷㝥〸㡦扥㌱戹㘱ㄹㄵ晣攲㘵㈹㜴愸戴㈲㌶户㐲戲挹㡣昳摢づ愵㤲㡤ㅡ㌱っㄷっ换愳〳挸ぢ摦㠹㐴㌹搸攸〰搹㈴㍤扣ㅡ㝤㍥挲㜷㔹㡤扢慤挶㍤扡㤱挳㜵㔴昴ㄲㄴ攴㥦㈸挲昷挱㌳慢ㄹ散㠸㙣㥡攵つ㈹㜰㝥挷㜴戰ㄳ搴㡤愱㤶㜵㙡ㄳ昰㐵㠱挱扦㐱搳ㄴㅡ摢㕡捦昰ㅡ敤挵攸っ愳㝣㕦戳㝣㜳戳扡ㅦ㝡㥥愰㐲㙡㉢㜸攴〱㘴ㅥ〸㕤〱攳㠱挰挵㕣㐲搴ㄱ㔰㔸て挵挵㕢㕥敤㐳搰昲㘰㌰㡥〴㔶慤昳挵慣户戴摤㠹㠱㐳㠶㔳㡦㐲换㥤㔵㙤㐲〲摣㐵ㄸ㈹搸ㄳ㤰㤴㜵㔷慦〲挶摡㍢㙢昷ㄸ扣㌰㔳愳ㄷ㈴㙡户〱㝤㍥挲㡦㕢㡤㈷慣〶㔷㔲昱㤱昳ㄴㅡつ㔳扢愷攱㔹㙡搷ㅢ搹昸搴慥て搴捥摡ㅤつ㡤扢㜶捦㘸㉦㐶㕦ㄸ㡤昶㐸搹㘸〷愱晥ぢ扤㔹扢攷挰㐳㑤敤晡〳挶摡㍤〷扢户㑡捦晢㙡㕦㠰㔶㙡㌷〰㠳搵㑢扥㤸㔷㉣敤㐰㘲㤰㠱搴㡥㑢愹愴㜶㑦㈲〹慢㜶〶㙢挷挳㔳㍤敥㕢愶搷㌰㠸〸㈳てㄲ㘵摡㠴㍥ㅦ㘱㉥愰㤲挶敢㔶㠳㉢愶昸挸攱㘲愹㠶㈹搳㥢昰捣㙤㌱㔸㈶㠳㐵㌱㔸㠷昰㔶㑢㍦㠲慡挳㠹攸っ愱戸摥捡㈴㝥慤㠳昸㔱㠰㤱昸㜷㘰昷ㄲ捦㌵㔷㕥敤㝢搰ち昱㘳㌰㔸㝤攰㡢昹挸搲㡥㈵〶ㄹ〸昱ㅦ㐳㉢挴慦昱㈵晥㕥㕦攲户㘳㄰㥣攰晤㉢㐸㄰晦〹晡㝣㠴戹昴㐹ㅡ㥦㔹㡤ㅤ扡㤱戳ㄳ㡤㠶㈱晥㝦昰散㐷晣攷㤶㝥㌲戲㤴㉦㐷㌷㡥㐴㜲㙡ㄷ昴㈶昱户㍢㠸㍦〵㌰ㄲ晦㈵散㐲戱攳㘵㝢户慦㤶㡢愰㠴昸愹ㄸ慣昶昸㘲扥戵戴〵挴㈰〳㈱㥥换㤷㠴昸㙡㍢昱㝣㤵㤲㍤晥㈶㕦攲扦挷㈰㈲㡣㈲㐸㄰晦〳晡㝣㠴㝦戴ㅡ㕣愱㈴㥡㥦㜵㈳㠷ぢ㤴ㅡ㠶昸㕦攱㔹㠸攷㡢㡡挱㤷㄰㠳慦ㅡ攱摦㉣晤㜴慡㝡㈳ㅤ愳ㄷ㠴摡〷扤㐹晣搵づ攲㑢〱㈳昱晢㘱昷敥摢っ攱搵㉡㘸㠵昸㜲っ挶㠷㉡晤㌰㤹㤶㌶㐶っ㌲㐰㍦愰ㅡ㐱ち昱换敤挴㈷㑦㌵晦昲㈵㍥ぢ㠳攰〴㕦搷つ〹攲つ扡挲㈳ㅣ戲ㅡ搹㔶愳戱㙥攴㌴㐱愳㘱㠸㙦ち捦㡣攲㍥搵攴㔸晡戹挸㔲扥㘹摦攸〷㤸㙡〶扤㐹晣昹づ攲捦〴㡣挴㌷㠷㕤㈸㜶散昱㉤㝣戵〷㐰㉢挴㉦挴㘰㜵㤰㉦愶愵愵㕤㐴っ㌲㐰㍦愰づ㠵ㄴ攲ㄷ摢㠹㑦敥昱㘷昹ㄲ摦ち㠳攰㈴㘰㉣㠱〴昱慤改ち㡦㜰ㅢ慢㜱㤸搵㘸慢ㅢ㌹戹㘸㌴っ昱敤攰㤹㔱っ搷ㅥ摦摥搲㉦㐵㤶挶㈰㈲戰摡㈳愰㍡㐲㙦ㄲ㍦挷㐱晣挵㠰㤱昸㑥戰㝢昷敤扦昹㙡㍢㐳㉢挴㉦挳㘰搵挵ㄷ搳搵搲㕥㑡っ㌲㐰㍦愰㡥㠴ㄴ攲㘷搹㠹㑦敥昱ㄵ扥挴㜷挳㈰㌸〹ㄸ㔷㐰㠲昸敥㜴㠵㐷戸㠷搵攸㘹㌵㡥搲㡤㥣㕥㘸㌴っ昱扤攱㤹㔱摣㝢㝣ㅦ㑢㝦つ戲㤴㕦㙣㌰㠶〱愶晡㐲㙦ㄲ㕦攲㈰晥〶挰㐸晣㌱戰㝢昷昸㝥扥摡㘳愱ㄵ攲㔷㘰戰㍡捥ㄷ昳て㑢扢㤲ㄸ㘴㠰㝥㐰つ㠲ㄴ攲㑦户ㄳ㥦摣攳㑦昳㈵㝥㌰〶挱〹扥㕡ㄶㄲ挴て愱㉢㍣挲㜹㔶㘳愸搵ㄸ愶ㅢ㌹挳搱㘸ㄸ攲㐷挰㌳愳戸昷昸攳㉤晤ㅤ挸㔲㝥搱挲ㄸ〵㤸晡㈷昴㈶昱㈷㍡㠸扦ぢ㌰ㄲ㍦ち㜶㉦昱愳㝤戵㘳愰ㄵ攲敦挱㘰㌵搶ㄷ㌳摥搲摥㐷っ㌲㐰ㅦ敢摤㈰㠵昸㜱扥挴㥦攰㑢晣㐴っ㠲ㄳ扣㔷〵〹攲㈷搱ㄵㅥ攱ㄳ慤挶㘴慢㜱㤲㙥攴㑣㐱愳㘱㠸㍦ㄹ㥥ㄹ挵㑤晣㈹㤶㝥ㅤ戲㤴㥦晦㌰挶〳愶愶㐲㙦ㄲ㍦摣㐱晣愳㠰㤱昸搳㘰ㄷ攲ㅤ搷㘰〵扥摡搳愱ㄵ攲㌷㘰戰㥡收㡢㈹戶戴㑦㄰㠳っ搰挷慡㍢㐸㈱㝥㤰㥤昸攴愹收ㅦ扥挴㑦挷㈰㌸挱攷㑢㈰㐱晣っ扡挲㈳ㅣ戵ㅡ㌳慤㐶愹㙥攴㤴愱搱㌰挴㤷挳㌳愳戸㑦㌵ㄵ㤶晥㜹㘴㈹㍦㤵㘲㑣〶㑣捤㠲摥㈴晥㘸〷昱㉦〳㐶攲㘷挳敥摤攳㉢㝤戵㜱㘸㠵昸㡤ㄸ慣慡㝣㌱㜳㉤敤㙢挴㈰〳昴〳㙡㍥愴㄰摦挳㑥㝣昲㔴搳捤㤷昸㌳㌰〸㑥昰㠱ㄲ㐸㄰㝦㈶㕤攱ㄱ㕥㘰㌵ㄶ㕡㡤戳㜴㈳㘷ㄱㅡつ㐳晣㘲㜸㘶ㄴ昷ㅥ㝦戶愵㝦ぢ㔹捡㑦挹ㄸ㔳〱㔳㑢愰㌷㠹晦㥢㠳昸昷〰㈳昱攷挲敥㈵晥㍣㕦敤昹搰ち昱ㅦ㘰戰扡挰ㄷ㜳㤱愵晤㠸ㄸ㘴㠰㍥㔶搹㐱ち昱戹扥挴ㅦ收㑢晣㌲っ㠲㤳㠰昱〹㈴㠸晦ㄷ㕤攱ㄱ扥搴㙡㉣户ㅡ㤷改㐶捥攵㘸㌴っ昱㔷挰㌳愳戸㠹扦搲搲敦㐴㤶昲㤳㍢㐶ㄱ㘰敡㙡攸㑤攲て㜲㄰扦ぢ㌰ㄲ㝦つ散㐲扣攳㔴㜳慤慦昶㍡㘸㠵昸摤ㄸ慣㙥昰挵慣戰戴㕦ㄳ㠳っ搰挷摤㔵㐸㈱㍥㙣㈷㍥㜹慡㘹敡㑢㝣㌵〶挱〹摥搲㠲〴昱㌷搳ㄵㅥ攱㕢慣挶㉡慢㜱慢㙥攴摣㠶㐶挳㄰㝦㍢㍣㌳㡡晢㔴㜳㠷愵晦ㄱ㔹ㅡ㌳㠹㠸㐲愸㍢愱㌷㠹て㍡㠸晦ㄵ㌰ㄲ扦ㅡ㜶敦ㅥ㝦㤷慦昶㙥㘸㠵昸摦㌱㔸摤敢㡢㔹㘳㘹昷ㄳ㠳っ搰て愸晢㈱㠵昸㠰㥤昸攴愹㘶摦㉦㝥户搴ㅥ挰㈰㌸挱㝢㔸㤹㐲晣㠳㜴㠵㐷昸㈱慢戱搶㙡慣搳㡤㥣㠷搱㘸ㄸ攲搷挳㌳愳戸昷昸㐷㉣㝤㈳㘴㈹㍦攱㘴挴〰㔳㡦㐱㙦ㄲ晦〳戶㙥〷戶㥢愳㐳㐶㌶㘰㈴㝥〳扡㕥攲ㅦ昷搵㍥〱慤㄰摦〴㠳搵㔳扥㤸㘷㉣㙤づ㌱〸㠵㍥㙥搵㐱ち昱㝢㤰挴㌶㈴〱㈵敥攲㤱㔶摥㈴晢捡㤷昸攷㌰㐸㠸㙦〱㔷搸攳㥦愷㉢㍣挲㉦㔸㡤ㄷ慤挶㑢扡㤱昳㌲ㅡつ㐳晣㉢昰捣㈸㙥攲㌷㕡晡㠳㤱愵晣捣㤵㔱〵㤸㝡つ㝡㤳昸ㅤづ攲㕢〱㐶攲㌷挱敥㈵㝥戳慦昶㜵㘸㠵昸㌶㈴㜵㡢㉦㘶慢愵㙤㑢っ㌲㐰ㅦ户敡㈰㠵昸㙤扥挴㝦攸㑢晣㍢ㄸ㈴挴㜷㠰㉢㄰晦㉥㕤攱ㄱ㝥捦㙡扣㙦㌵㍥搰㡤㥣て搱㘸ㄸ攲㍦㠲㘷㐶㜱ㄳ扦捤搲㜷㐶㤶昲㔳㘰挶㤹㠰愹敤搰㥢挴㙦㜵㄰摦ㄵ㌰ㄲ晦〹散㐲扣攳ㅣ晦愹慦昶㌳㘸㠵昸㈳㐹敡㑥㕦捣攷㤶戶㍢㌱挸〰㝤摣慡㠳ㄴ攲㌷搹㠹㑦㥥攳㕦昵㈵晥㑢っㄲ攲㝢挱ㄵ㠸摦㑤㔷㜸㠴扦戲ㅡ㕦㕢㡤㍤扡㤱昳つㅡつ㐳晣户昰捣㈸敥㜳晣㕥㑢摦ㄷ㔹ㅡ攷㄰㜱㌶㠴晡ㅥ㝡㤳昸攷ㅣ挴昷〷㡣挴晦〰扢㤷昸ㅦ㝤戵㍦㐱㉢挴て㈰愹扦昸㘲㝥戳戴〳㠹㐱〶攸攳㔶ㅤ愴㄰晦愴㉦昱㡦晢ㄲ捦㤳愲㄰㥦〷㔷㈰㕥㍡昰ㄶ㔶搴戲挱㔵っ搲㐸搷㡤ㅣ㉥㘲㘸ㄸ攲戹昴㠱摢攲㈶㥥慢㈱㐴㍦〲㔹捡慦捡ㄹ㑢〱㔳㕣〷㘱ㄲ扦搶㐱晣㈸挰㐸㍣搷㐶〸昱㡥㥢㘴㕣ぢ攱搵㘶㐳㉢挴㡦㈱愹㑤㝣㌱㌹㤶㜶㉣㌱挸㠰㐹愹㘶搰ち昱㙢散挴㈷捦昱昷晡ㄲ捦㈵ち㜸攲㝥㍣㕣㠱昸ㄶ散攰ㄱ收㤲〴㘹㜰晤㠱㌴戸〶㠱㡦㥣㠳搱㘸ㄸ攲戹㘸㐱〸㜶摤㈴攳㍡〶搱㑦㐶㤶昲换㝢挶㌲㘴愲㕡㐱㉦ㄴ㥥っ㍤〱晣ぢ㕢㉣慢㌶㤶㌹愹愱戹㉤戴㜸攲㑢㍤㘵㤳㌳㍢愰搳㍦昵㤷敡搹摥挵散㡡昷搲ㅤ扦挸㌶っ扦戰㌶ㅦ户㥥〳改昸慡㡥㑣㜹〷㌴㈳敤搸㍦收㡢㉢ㄵ㕡挲ㄵ晦㌲㔷愱㔸晦ㅦ㝥挸㐹捤ㅢ搹昴搸ㄶ㝦挶㘹搸㘰搵ㄹ㥢㉢扤搵㔴摤㐵㜱㌷㠴扡㠹㝢つ㝥攷挳昳戳㌱㉢戴挱昳ㅢ㍢㕤攱㐹搸㉦戶戳㙦㥤搵搵㤱㤶㌹愹㐱㤸㜰㜷㘸昱挴ㄷ昷ぢ晢慡ㄷ㍡慣㠰扡づ㘱戸搹㤲摢っ㘶摡ㄷ㙡扦㑣慦㑣㤵改ㄵ摡攰昹㠱㥢晥っ挰愰晣㝤㙤㙢㍦㔱〳㉣慤㈳挱㠱搰攲㠹㌹㥣㤹㘰ㅥ㍡㤲攰愵昶〴㉢㤹攰〸㤸晣ㄲ扣㈸㔵㠲ㄷ㙡㠳攷㐷㘶㐶挱㤳㈴㌸捦㥥攰ㄸ㑢敢㐸㜰㉣戴㜸攲㔳㈵㘶㠲昹攸㐸㠲攷搹ㄳ㕣挰〴㈷挳攴㤷攰攲㔴〹㉥搲〶捦て扤㥣〲㑦㤲攰㌹昶〴愷㕡㕡挷〱㔶〰㉤㥥昸㜲㔵㌳挱㈲㜴㈴挱㌳敤〹㥥捦〴愷挳攴㤷攰㥣㔴〹㔶㘹㠳攷挷㔶㑡攱㐹ㄲ扣挴㥥㘰戹愵㜵㌰ㄸ㠳ㄶ㑦㥣㐹捣〴攳攸㐸㠲戳敤〹㉥㘷㠲㜳㘱昲㑢戰㉣㔵㠲愵摡攰昹挱㤳㌳攱㐹ㄲ扣摡㥥攰㐲㑢敢㘰㜰ㄱ戴㜸攲㠷昵捣〴㤷愰㈳〹㑥户㈷㜸㍤ㄳ㕣ち㤳㕦㠲搳㔲㈵㔸愸つ㥥ㅦㅤ戹ㄸ㥥㈴挱㙡㝢㠲换㉣慤㠳挱㑢愱挵ㄳㅦ㤹㌰ㄳ扣〲ㅤ㐹㜰慡㍤挱㕢㤹攰㌵㌰昹㈵㜸㔲慡〴㈷㙢㠳攷㠷㍦㙥㠰㈷㐹㜰戵㍤挱ㄵ㤶搶㘲㤰攷攳昰㑡㘸昱挴戹捤㑣㜰ㄵ㍡㤲㘰扥㍤挱㝢㤹攰ㅤ㌰昹㈵㜸㐲慡〴挷㘸㠳攷挷㌷敥㠲㈷㐹昰㐱㝢㠲昷㔸㕡㉢㐱㐲挲昷㐱㡢㈷㝥㕦挱㑣昰〱㜴㈴挱㤱昶〴ㅦ㘶㠲敢㘰昲㑢㜰㘸慡〴昳戴挱昳〳ㄸ㡦挲㤳㈴昸戸㍤挱つ㤶搶㔱攲㈷愰挵ㄳ摦昸㘳㈶昸っ㍡㤲攰㐰㝢㠲㑦㌳挱攷㘱昲㑢昰搸㔴〹昶搳〶捦㡦㔰扣っ㑦㤲攰ぢ昶〴㌷㕡㕡〷㠳慦㐱㡢㈷㍥ㄷ㘰㈶昸〶㍡㤲㘰ㅦ㝢㠲慦㌰挱户㘰昲㑢戰㐷慡〴扢㙢㠳攷㠷㈰摥㠳㈷㐹昰㜵㝢㠲ㅦ㔸㕡㐷㠲ㅦ㐱㡢㈷㝥晣挱㑣昰ㄳ㜴㈴挱慥昶〴户㌲挱㥤㌰昹㈵昸户㔴〹㜶搲〶捦㡦㌱散㠲㈷㐹昰㝤㝢㠲扢㉤慤愳挴㕦㐳㡢㈷㔶攳㥢〹敥㐵㐷ㄲ㙣㘷㑦㜰ㅢㄳ晣ㄱ㈶扦〴㕢愷㑡戰㤵㌶㜸㝥㄰攱㔷㜸㤲〴㜷搸ㄳ晣摤搲㍡ㄸ摣て㉤㥥昸㔱〹㌳㐱摥〱㤲〴て戶㈷昸〵ㄳ攴㙤ㄷ扦〴㥢愷㑡戰㤹㌶㜸㝥㤴㠰㜷㘶㈴挱㍤㘸㈴㈷ぢ㜲换㠵愹㌸ㄲ攴㑤ㄶ㐹昰㕢㌴㥡愴㉢摥㈹㤱〴㥢搸ㄳ晣づ㕡挵摢ㄳ㝥〹㘶愵㑡戰㤱㌶㜸㝥ㄸ㠰㜷㌰㈴挱㕦搰㐸㈶㈸户㈶散〹捡㜹㤰㌷㈳㈴挱摦搰㐰㠲扣愳㈰〹愶摢ㄳ摣〷慤攲㘵扣㕦㠲晢㝥㑥㌱㌱晣㕤ㅢ㍣㕦捥捦㉢㝤㐹㌰〳换ㄱ㤳〹捡㈵㍣ㄳ㜴散㠳扣㘸㤷〴㠳挰㈲㐱㕥㜹㑢㠲㍦挳㝢㜲㍥㤸〵愳攲攵慥㕦㠲摦愵㑡㜰慦㌶㜸扥㈰㥦㔷挴㤲㘰㔳㝢㠲㜲愹敢㐹㤰ㄷ户㤲㘰搸㑣㤰㔷愸㤲攰搷昶〴㥢㌳㐱㕥ㄶ晡㈵昸㐵慡〴㍦搷〶捦㤷搴昳捡㔱ㄲ㙣㘹㑦㔰㉥〹敤㈵㈶户㘱㕥〴㑡㠲㠷㥡〹昲㑡㑥ㄲ晣捣㥥㘰㙢㈶挸换㈷扦〴户愵㑡昰㈳㙤㜰㝦㔱㝣㤸ㄷ㕣ㄲ戴㍤晣ㅡㅤ㈸㍡㐲㠴㌲㜹㔱昵昷搴㔷㐰收ㄷ㔹搶晣㜶㜷づ戶㈰戳㠴换㝤戳㑢捣㥦捥收㜵㤰㝣ㅦ㜸㤹慣㤵㙤㡣敦戴慣挴慦㘷㡦挶搷戴攲㥢㉣昳愳晡㤷㐷㐷攲敢㕢昹摤㠲搶户㈶ㅡ搲攳攰㘰挹搸㑡㝣㡤㘲愳㤲㤱㜱㝣ㄹ㙣㜱ㄶ㝥㤲㌶㠱㕦㌳慦昸㉢㉣㕢挷敡㘵㝥づㄳて昳慢㉥㝤ㄷづ㜳㐵戰晢㕢ㄶ㙤摦㜸㕢挳㠷昵慤挷㘹晣㉡捣㍦戶㘸㍤搸〹㔵慢昹㌹㔳㔹愹ㅣ㑦㔳敦愲敥ㅦ攲㌶㜱㘸搷㔱㠷散㤷㝣〳㘹㔸㝣挸㌲昳㡡㔱挹㌶攰㜳ㅦ㐶ㄷ慡昸㠹っㄱ㠱㑣㕥㘲扡㌷㡡㑢戸㠷㜳㠴敢挷㥦戳戳戹愵ㄳ慦㝢㘴搰敦扤愶づづ昳㉡㔲㜶愹慥昴㜹〴挵㤱㄰㈱挵㉢㐵敥㔶〶㜳㑤㔳㥢㝤㜳敢㐱扣㌳户愳愸慡挹㑤昱愲㤲昹㈵㈳昲㙡㔰㈲昶㈶戲て挵搱㄰㈱挵㑢㍦㕢挴ㄷ㝣㈳昶㈳摥ㄹ戱㍦㔵戶㠸扣㑡㜴㐴攴攵㥤㐴ㅣ㐰攴㍦㈸〶㐲㠴ㄴ慦攵㙣ㄱ㥦昰㡤㌸㠴㜸㘷挴愱㔴搹㈲㉥㜰㐷攴昵㥡㐴ㅣ㑥攴〸㡡攳㈱㐲㡡ㄷ㘷戶㠸㙢㝤㈳㡥㈲摥ㄹ㜱っ㔵戶㠸扣㡥㜳㙣㈳㉦挰㈴攲㔸㈲挷㔱㡣㠷〸㈹㕥㙤搹㈲摥攳ㅢ㜱㈲昱捥㠸㈷㔲㘵㡢挸ぢ㌳㐷㐴㕥㔱㐹挴㤳㠸㥣㐲㜱㌲㐴㐸昱昲挹ㄶ昱㔶摦㠸㔳㠹㜷㐶㉣愰捡ㄶ㤱㔷㕡㡥㠸扣㐴㤲㠸㠵㐴㑥愳㈸㠲〸㈹㕥て搹㈲摥攰ㅢ戱㠴㜸㘷挴ㄹ㔴搹㈲昲搲挹ㄱ㤱搷㍣ㄲ㜱㈶㤱愵ㄴ㘵㄰㈱挵ぢㅣ㕢挴换㝤㈳挶㠸㜷㐶㥣㑤㤵㉤㈲慦㠵ㅣㄱ㜹ㄱ㈳ㄱ攳㐴㈶㈸慡㈰㐲㡡㔷㉣戶㠸ㄷ晡㐶㥣㐷扣㌳攲ㄹ㔴搹㈲昲攲挶ㄱ昱㜱㉢攲〲㈲ㄷ㔲㥣〵ㄱ㔲扣〴戱㐵㕣散ㅢ昱㙣攲㥤ㄱ㤷㔰㘵㡢挸慢ㄵ㐷㐴㕥㘶挸㌶㥥㐷攴昹ㄴ㑢㈱㐲㡡搷ㄴ戶㠸㜳㝤㈳㕥㐴扣㌳攲㈵㔴搹㈲昲昲挳ㄱ㤱搷つㄲ昱㕦㐴㕥㑡戱ㅣ㈲愴㜸㤱㘰㡢㔸攱ㅢ昱ち攲㥤ㄱ慦愲捡ㄶ㤱搷ㄳ㡥㠸敦㕢ㄱ慦㈱昲㕡㡡敢㈰㐲敡㐳㘷挴㠸㙦挴ㅢ㠹㜷㐶扣㠹㉡㕢㐴㕥㈰㌸㈲㜲㘶㉦摢㔸㑤攴捤ㄴ户㐰㠴ㄴ愷昱戶㙤㍣搵㌷攲㙤挴㍢㈳摥㐱㤵㉤㈲㘷晣㡥㠸㥣慡㑢挴㍢㠹㕣㉤ㅥ㈰㐲㡡昳㜲㕢挴㝣摦㠸昷ち摥昱扡戶㠶㉡㕢㐴㑥攱ㅤㄱ㌹昷㤶㠸昷ㄳ昹〰挵㠳㄰㈱昵㥢㌳攲㍦㝤㈳慥㈳摥戹㡤敢愹戲㐵摣攷㡥挸挹戴㐴㝣㤴挸挷㈸㌶㐰㠴ㄴ㘷捥戶㙤ㅣ散ㅢ昱㐹攲㥤ㄱ㥦愶捡ㄶ㤱㤳㙣挷㌶㜲㜶㉣ㄱ㥦㈵昲扦ㄴ捦㐱㠴㔴ㄸ搲ㄶ昱ㄸ摦㠸㉦ㄲ敦㡣昸㌲㔵戶㠸㥣㌵㍢㈲㜲扡㉢ㄱ㌷ㄲ昹㉡挵㙢㄰㈱挵戹慤㉤㘲㜷摦㠸慦ㄳ敦㡣戸㠵㉡㕢㐴㑥㠳敤ㄱ㔵㝢㈸㘴戶晣㜷戸攴昵挶㜱搸て戲搲㠲㡡㜳㕡㌱㜴搱㠶〱㘲㔰㡡昳㕣㌱ㅣ慥つ〳㘱㌰摥㠱㌶㤳ㄳ愴㝡捦摣㌸扦晦㠳㥦挴㝢ㄷ㜱ㄴ愷㕥㜲㡤昰㥥㙥戰愳㌸㜹㤲散㍡扡戶㠷ㄳ㉡㌱㜴㜰㙤て㈷㔹㘲㘸㙦摦㥥㡦攸戴〷〴户挹搸挶ㅥ攷㔳ㄲ昰㘳摤㤰㠰扤搱㤱攱㠷戹〲㜲㍥㈵㠶㌶慥㠰㥣㘳㠹愱戵㍤攰㘷㜴摡て㐲〲敥㘰㡦搳㈹〹戸㔳㌷㈴㈰愷㑥㌲扣愵㉢㈰愷㔳㘲㌸搸ㄵ㤰㔳㉣㌱ㅣ㘴て戸㡢㑥㠷㐰㐸挰㉦搹攳㙣㑡〲敥搶つ〹㌸ㅣㅤㄹ摥摣ㄵ㜰㠴㘵㘸收ち挸ㄹ㤶㡣〸摢〳㝥㐳愷愳㈰㈴攰户散㜱㌲㈵〱昷敡㠶〴攴挴㐹㠶㌷㜶〵ㅣ㘷ㄹ戲㕤〱㌹挱㤲ㄱ㈱㝢挰ㅦ改㜴㈲㠴〴晣㠹㍤捥愵㈴攰捦扡㈱〱㑦㐲㐷㠶〷㕤〱愷㔸㠶㑣㔷㐰捥慦㘴㐴㠶㍤攰敦㜴㍡ㄵ㐲〲敥㘳㡦㔳㈹〹戸㕦㌷㈴㈰愷㑤㌲㍣攰ち㌸捤㌲散晦挹㍣ㅣ慤愳㡥搳㉢ㄹ戱㑦ㅢ攴愸㑢挷㐷㤶㔵〹㑣ㄲ㌰㠳㍤捥愴㈴㘰㈶㝢㍣㈴昸挷㔹㤳っ晦㐵て户づ昳㔲换昰戳㉢㈰㘷㔷㌲攲㈷㝢㐰㠳㑥㌹㥢㤲㠰㈱昶㌸㤱㤲㠰搹昶㠰㥣㌴挹昰敦㕣〱ㄳ㤶㘱慦㉢㈰㈷㔷㌲攲㕢㝢挰ㅣ㍡㥤〷㤳〴っ戳挷㜹㤴〴㙣㘶て挸㌹㤳っ晦捡ㄵ㜰愱㘵搸敤ち挸戹㤵㡣昸搲ㅥ昰㐰㍡攵㕣㑡〲ㅥ挴ㅥ愷㔱ㄲ昰㘰㝢㐰㑥㤹㘴昸晦㕣〱捦户っ㍢㕤〱㤷㕡㠶ㅤ昶㠰慤攸㤴㔳㈹〹搸㥡㍤捥愲㈴㘰ㅢ㝢㐰捥㤸㈴攰㜶㔷㐰捥愲挴昰戱㉢攰㜲换戰捤ㅥ戰ㅤ㥤㜲㈶㈵〱摢戳挷㐹㤴〴散㘰て挸〹㤳昸㝤摦ㄵ昰㕡换昰㥥㉢攰㜵㤶攱㕤㝢挰捥㜴捡㠹㤴〴㍣㥣㍤捥愱㈴㘰ㄷ㝢㐰捥㤷㈴攰㔶㔷㐰捥愱挴昰愶㉢攰㉤㤶㘱㡢㍤攰㤱㜴捡㜹㤴〴散挶摥ㅤ攸㐹挰敥昶㠰㥣㉥㠹摦㑤慥㠰㥣㐲㠹攱㌵㔷挰扢㉣挳慢昶㠰扤攸㤴搳㈸〹搸㥢扤㌵攸㐹挰㍥昶㠰昷㕢挳㕦㜲〵攴っ㑡〲扥攸ち昸愰㘵㜸挱ㅥ戰ㅦ㥤㜲ㄶ㈵〱㡦㘵㙦㍤㝡ㄲ戰扦㍤㈰㈷㑢攲昷㔹㔷㐰㑥愰挴昰㡣㉢攰〶换昰戴㍤攰㐰㍡攵㈴㑡〲づ㘲敦㘹昴㈴攰㘰㝢㐰捥㤵挴敦攳慥㠰㥣㍦㠹㘱㠳㉢攰㜳㤶攱㌱㝢挰㘱㜴捡㌹㤴〴ㅣ捥摥换攸㐹挰ㄱ昶㠰㥣㉡㠹摦㠷㕤〱㌹㝤ㄲ挳㍡㔷㐰㑥愹挴戰搶ㅥ㜰ㄴ㥤㜲ち㈵〱㐷戳户〵㍤〹㌸挶ㄶ㌰攷ㅤ㘸戹㝥㍤㙤㥥㉡㍡扤昸昴搳㝦捡挹挸㍤㌴攳愴㐱㡤慦摢昶搲昶换户㥣㍡㘰攷㙦㌷摥戸攵搳换㕦昹敤戱㘹〳㥥扦攵㤶㘷晦戹昲㤵敤捤㑢慡搳搶晥㌴扡㝡㐱捦搲〵戳㑢㈶晤㝤挴㠲㈹㌳挷昷ㅣ搷慣㙢㝡㝡愳㐶㥤㕢扣搰昲昰昰攲搹て慢愷摥㌹戸㐲挹昴〶〱㤲昷摡搱挶攲㌷㠴㤵戹攱㔸㈴搳㈴㍤㠷㌳㤴〶㑤㐳㈶㍤㑣挳扡㘱㉤㘹㜰昲㈳㘹㡣㌷搳攰扣愵㐱搳搸㠱〰㔲〴㐷ㅡ㍢慤㌴昲捤㌴㜶㌵㜴ㅡ㌲㐱昲戰挱㠹㤲戰㌱挹㑣㠳㜳㥣〶㘵㐳愶㑤㑣挳㝡ㅦ㐶㡡挲改㤳愴㌱搹㑣㠳㌳㥦〶㑤㐳㈶㔳ㅥ㌶㝥戶搲㤸㘲愶挱昹㔰㠳愶㈱㔳㉣てㅢ㥣㙡〹ㅢ愷㤸㘹㜰㤶搴愰㘹挸挴换挳〶㈷㘰㤲挶㔴㌳つ捥㥤ㅡ㌴つ㤹㡥㜹搸攰戴㑣搲㈸㌰搳攰㡣慡㐱搳㤰㐹㥡㈷つ㑥搶㈴㡤㐲㌳つ捥戳ㅡ㌴つ㤹扡㜹㡡挲㈹㥣愴㔱㘴愶挱搹㔷㠳愶㈱ㄳ㍡てㅢ㥣搸㐹ㅡㄱ㌳つ捥挹ㅡ㌴つ㤹收㜹搲攰㜴㑦搲㤸㙥愶挱㤹㕡㠳愶㈱㤳㍦㑦㔱㌸〹㤴㌴愲㘶ㅡ㥣扦㌵㘸ㅡ㌲㈵昴戰挱愹愱愴㔱㙡愶挱㔹㕤㠳愶㈱ㄳ㐵㑦ㅡ㥣㌰㑡ㅡ攵㘶ㅡ㥣敢㌵㘸ㅡ㌲㝤昴愴挱㘹愴愴ㄱ㌳搳攰っ戰㐱搳㤰㐹愵㘷摦攰攴㔲搲㤸㙤愶挱㜹㘱㠳愶㈱㔳㑤㑦ㅡ㥣㜲㑡ㅡ㜱㌳つ捥ㄶㅢ㌴つ㤹㠰㝡㡡挲㠹愸愴㔱㈵㘹㈸捥〵㘵㉡㝢㤱㥥捡づ挱㤰㉣㝣㈷ㅤ㘷㘷㘲戸搰㘵攰㝣㐹っㄷ戸っ㥣挱㠸㘱愹换挰㌹㠵ㄸ捥㜷ㄹ昸㉡㉦㠶昳㕣〶扥敥㡡攱㕣㤷㠱慦㠴㘲㔸攲㌲昰戵㐹っ攷戸っ㝣戵㄰挳搹㉥〳捦摦㘲㔸散㌲昰㡣㉡㠶㐵㉥〳捦㜱㘲㌸换㘵攰㔹㐷っぢ㕤〶㥥〷挴戰挰㘵攰㤱㈹㠶㌳㕤〶ㅥ㉢㘲㌸挳㘵攰摥㉢㠶昹㉥〳昷㈷㌱捣㜳ㄹ㔸㘱㌱捣㜵ㅡ戲晦ㅦて㈷慣㜵 | E27: 㜸〱捤㔹摢㙦㈳搵ㄹ昷㡣㍤ㄳ㡦㜳㌳散㉥㤷㉥ㄴ〳扢㠵㤲㘰㍣㡥㉦㌱㤰戲㡥㜳㈱㙣㜶ㄳ搶搹㕤㉡㠴慣戱攷㑣㍣㘴㉥㘱㘶㥣㑢㔵㠹扥昱㔴愹慡慡昲〲㙡㉢昱㠰㔰愵扥㔴晤〷晡㠲晡搸慡㔵㈵㜸愸㔴愹㑦㤵㑡晢搴㌷晡晤捥㡣慦昱㠶戰㙣愵㍤㠹㍦㥦敢㜷捥㜷晦捥㜱㑣㠸挵㘲㕦㔲挱㌷㑡〲㤵挷敡挷㝥挰散㙣捤戵㉣搶ち㑣搷昱戳㔵捦搳㡥㌷㑤㍦㠸搳〴戹㘱搲戸㉦㌵㝣昳〷㉣搹㌸㘰㥥㑦㤳愴㔸㉣㤹㔴㐴ㅡ〷ㄲ㝣搲摤㠶㠲㔵㔳〹〲㍢戵攵慤收摢㠴戵ㅥ戸ㅥ㥢捦摣ち搷㉥愹㙡㔶捤收ㄷ㉡㙡㌶㌷㥦愹㜵慣愰攳戱㈵㠷㜵〲㑦戳收㌳摢㥤愶㘵戶慥戲攳ㅤ㜷㡦㌹㑢慣㤹㕢㘸㙡㠵㐵戵㔰㉣ㅡ㤵捡攲ㄴ㙤ㅤ扢㕥㕢摥昶㤸攱摦㉢㥣㌲㜰㙥搵㤶戳搷㔹㜰慦㜰㑥㄰㑥㐲戹攲摡㥡改摣㈳愴ㄲ㜸㕢㕣㘱㉤ㄳ㐲㘰捣㌳㥤摤㉣ㅤ㝢㠸搱搴㉡㘷慢扥摦戱昷㈱捦ㅡ戳慣ㅢ捣㐸搲㑡挵㕥昱㠳㙤捤戳晤㈹ㅢ晣㘳ㅥ㜳㕡捣㥦戱㔷㡦㕡捣㡡㈶晡㐹晢㤶收㕤搷㙣㤶㐰㘵搶づ㘵戸愱㌳㈷㌰㠳攳㘹晢愶捦㙥㘸捥㉥挳ㄴ挹㕥敦㤸扡㤰㐸搰㝦㉣晥捣戸㤳㜱㐱搱㜹散㕡㕢昳〲摥㠲〸搵㜱㜳〷搴㠵㔳㌱㜴㉥愸㔴㘶㘴ㄵ㘴㔶㌷敤慢捣㜳㤸㠵㑤㈰挹戹㤱㐹㥣㐱愱ㅣ㝡㥣敡㤲〳㈹〹㤳㤱ㄱ㠰ㄶ散㈲㠳㔹㌷㜷㍣㤳挸散㔸㥡㌷㝦捤㜴㤶ち攵㝣㍥㔷捣㉥ㄴㄷ搴攲㐲㘵㘱㈱㕦㥣摦㌴昷㤸㘵㌲㍦㔸慡ㄴち〵㌵㤷㉤攷㑡ぢ戹昲㘲愹㔴愸捣㕦搳㡥㤶搴㠲㕡㉡愹愵㙣慥㔸㈹㤴搴㜲愵㔲㔶ㄴ㐲慤愴戰挹㈴㠱昸搲㜲㔹㤹㐲搷㌴〱㈱昱ㅦ戲捦挱搳㘰㡥搸搰挴㐶㔳㙣戴挴㠶㉥㌶㤸搸㌰挴挶慥搸㘸㡢つ㔳㙣扣㉤㌶昶㘸㑥户㈴㈷㈶挴愸扣昱昲㝦㍦㝤㑦㝦㜹敤晤㍦晦昸攲敡㙢扦扤㌰㌵㑢㤳㕥㡦㈸㕤昱戴㐳搲㥤扥㕡收戳㌹晣㝤戵㍤㤲㌹ㅡ㐵愳㙣愸慡㕥捣㘹ぢ㥡〴㠲捥㉡昸㌴捤㥤㌲㙥㥢㡥敥ㅥ㜲㑤㜸㙣㔹昳㔹㕦㌱收愲戱㘵户攳攸晥挵昱㠳昵㐰ぢ搸户㐶挷晡㐸㑥㉣慢㤳㥤㌰㥦敦昷敤搱㘵户㌴慢挳慡㐷㘶㌸晣昸挸㌰㔹㠹摢扣昳攸㥡挷摥改㡤㥥㌸㔱㤵摣改〱挷㝤㠲捡㜰㈸㍣㔷愶搶㜶㝤收昰攳捤搹摢㘶㙢㡦㜹㜵〶㘷捣㜴㑥敡〵っ㐵愶㍡户攵㄰愱㘴㝣晡㔳㠳扤挶敡㔱挰ㅣ㥤改㜴摥㝤收〵挷㍢㕡搳㘲てつ㑤〹昷愴㠱㐷㠷扡搷摣㔶挷慦戹㑥攰戹搶昰㐸㔵㍦搰挸㍤攸搷㕣㥤㤱㜵㈷㔰挸搵挷攳㠲㄰㝢㙥㥣㠹〱慦㥦攵㠲ㄸ㄰㌱㡣晤㤱㘱戵换摥㈰敡㠸ち㡢㐱㈷挵㑢㕦㠱㡣攳〵㥡敦摥㜹攲〰㑤㠸㕣㤸晤散㥤㘷昳㌳昶㈴昷晦㥤㉣㡡攷㈲敡㔷て挸㠵扥慡㌹扡挵扣㔳攳慥㠰ㄳ㈹㌰ㄶ改㕦攴㄰敥挸㍤昸㉡攱㐸㌸㤶づ㑤㍤㘸换㙤㘶敥戶〳敡愳搸㥣㑣㠲戵㈷㡡昲㈰㜵㈹攷〰捥ㄳ㐸愵㘲昲〵㑣㤲㔳捡㐳㘱㕢㠲㙦晡晡捥ㄹ搱㕦攱挱㠰㈲户㉦搹㙢慥攷挷攳攳愸㝣㔵昳摢〱搴昳搴㐱㤰愶㍣っ昰〸〱〹㉥昲㉢㝤㍦㈸㑥㈰挴㑤摢㉢捣搰㈸戱攰搶㉤㘸㤲ㅤ挶慡ㄵ收户ㄴ〴戵つ戲㤵㈳㤹㙡㘴晣㔳㌶戴㥦ㅤ〵㉢㕡愰㑤搸ㄴㅥ㐹㑡ち㑤㥡攳慢挲ㅡ㔶㑥昳扥敥敡㔴搴㈲っ㘹㕥ㅤ挰㌲挹㍢㐲㑣㘴㌸㘴㉦戱㜸〴㑦㈷㠲捥㡥〰㈶㡦㉡晡㜰㤸愳攸慢慦㌳㘷攷㜸㥦昹㤸㥥㤴㑦㘵攵愸㜹〱搹㔶慢㜹㌳㌰㉤㍦㑢㈷㕤昷摣捥晥扤挴〳㕣捡愳〴扡㐵晡〷㘹昱搹㘹㐲㍡㌹㜱〰搹㌴ㅡ㐴ㅣ戵搰愳㈰ㄶ㉡搰㔶㐲昶㈵㝤昱愲㍣㑥㕦愹搳挶㈴㐴搶慦㤳ㄲ挰昸愶㙣攲搰㡥挷㜸㤲㤳攴つ攲昶戴㝤摢昵昶㥡慥扢〷㝤㥡攱㉤扦捤㔸㠰挴㘱㌲㑡㤴㜸㐲㈴〸昱昸㔰ㅣㅦ挸㌰㤰㜲挸㑦ㄲ㤸慥㕡㔶愶㡢搱㤷㥦愲慥㌸㔲㤸愷愹昲㐴㙤㙢㌵〳捦㙢㘵戶摢ㄴ㈳㌳戹捣昳ㄹ㌵㐷〹㠵㥡㍤戲㝣㕢昸㥣㤸㠰㙣攱㠷㥦ㅢ㥦晤攵捤㍦㕤晦㐹敥㠳㑦㝥慦晥昵㈳攱戳㘸㘰㌴晥㑢昰㈷㕦挳㙦㜳㜶ㅢ户㑣㜶〸㐵㥢㌱㈸敤慢㜵晣挰攵㔶㌱㙤慣戸搷摤㘰挵昴昷㉤敤昸㥣ㄱ㔵㙥户㤹㐳㌱换愳搰㌵搲攷敥敦㌳㕤㌱敡㙥挷㙢戱㡤㤵晢㈱愶ㄱ㍢㐸戳㜸㌸ㄳ〵㉡㜷攷愶㘳戴㤲晣㈸㤵㤸〴攷㍡㙡㙤㍣昹ㅣ㠸㡣扣ち㔱捣昶㌹扡㘳〶ㄶ㥢㌴㜸㔴攲昵愴㐱㕣愴㐴㐰㥦㌰㜶摡愴㠵㉢搳挶扡㘷敡㤶改㌰〸攳㝣㌸㜵㤳敤㔲搰摦㜶㝤ㄳ㜹晥戴戱攳㘹㡥扦て晦搵㍡㝥㜰愸挵ㅤ㥤㘴㉣㥢㡥㑦摢㜰㈹愲㍥㙢搴摢敥㈱㕤晤㍡戶戳慥敤晢昷㠵㔴㘰敢㘱攱愲ㄱ㐴㐱ㄴ㠵愴㤸扣㕢昹挸摦㈱㙣て昷㤳昹っ改㙡攰㤹捤づ㤸挶㌷捡ㄳ㑣〰㜰㌹挶㈴㠴挷㔱㙦㌵㈰挶㤱㔴〳攷ㅤ扡㑥㡤㡤㝡扤㍢㌵て敤捦㘰捤戳〴㕥㕢扦戹搱㑦挲扦搱挵㔸㐲㐰㍦㜳捥〳㍦㍡ㄳ慡ㄱ昲㈰㘸ㄵ㔹㈷㘹〳㕡愳慡㤹㌲昸ㅣ㘸改㑣扦扡㐶㘱㜳捡搸搴㥡捣愲㘸㙦㙢挱㑣搸㐰摡㘵㙢㤶ㅦ㡤搵㕣摢搶愰㜶戸晥搵㕢㥡挵㤲㐶戵ㄳ戸㜴愷㔲っ〲㕣㌷愳㉥敤㠸扡戴愳㌰㉥ㅢ㌷㜰ぢ攰㜵攰㜲㜷㌵捦っ摡戶搹㑡愲㠱㑣晤扥搰㔷㕣摢㠸㤹摤搲昵㈷愳㠱㍥っ户㈴敥㉣攵挶㘰ㅤ挴㑦㕡㉤ち㌲晤〹㜷㤹㈴㤲昷攱㈱㔱㜹㡥戰㐹晣〹〶搹〶捡ㄷ摤㠷㥥㉦摥愵ㅥ敥愰〴攴㜸ㄸ㔶收愲ちㅡ〹愴㔹愷㘶㄰㠸㔸愹㑤㔷搳搷戴ㄶ㍤攵㑣㐴て㌹㐹ㄲ㉤摣㡤㤷㐶㑥㔷愳㘰㐵搷㡦〳㔳㘷㕥ㄲㅤ㜵㝡㌰㑡㈰ㅢ㤴㐳ㄹ㔲㜴㡢挷㈴㘹㌲㌹㙥慦㡤㉥慥㑢㔱愴ㅣ㝣㤰摡㌸㠱晦㥦慦㉦扥〲慥愷㔲㍣㑣捤㔳㔵㜹㥥㠰㠰㙣ㄱ昴㡣㑣挸㘲挲ぢ〴㈴攴㈵愳戲ㄹ㑥慦㈸〹挳㥤㌶挱㥦㐰㤰昸㈵㈹㐹攲ㄹ愳挴〹㤹ㅣ挸昴攴㌰挹㑢㜶摦㔵攴㍡㘹㌹搳㔳愱㡦㐵㐶〹㜱㠸㘲㠲㐴㉤㡦摥㤲㑦㙣㑢挸散㍡攳㈹愰㠰戴㐷捥ㄱ㤸㠶戱㄰晥挶搲ㅢ㙢㉢攵ㄳ〹㔰㉡愵㠴慥㑢㐰㈶搴㈵㍤㑣收㌹㙦ㄶ愸㕢㈹㄰㄰攰㜵戸昴㡢㔱〵つ〹㥡㌳捡㤰ㄳ捡捡㜹㙤㐰㙤敢挱戱㐵慥〲㔵㌰㈸慣㐱搴㈹摥㐷㘲㜳㍤㝡㔹㑣㡣㕥㕡㝡㙢㤱愵㑦㥥ㅦ戹㄰昲㘵ㄸ㠱㔵㐸㝦愰ㄴ收㡥敢㜱攸㝥㜶㠸㌵㈸㜲㤹挰昹㙢㘶换㜳㝤搷〸㌲㜵ち㠵ㄹ㕣戰㡤㔸㉣㔷㤵㍥㈵㡣㘳昷〴㘱〹〷㉦㔹〷㐸㌸㔳㝢㡥㝢攸昰搳㐸㍥摥ㄹ㌸扦㈶㈶戰つ㉥㐶扣㍣㑤㕣㑣挳㠲戰㔸愹㄰㤸㡥愷愱㠲㘸换㉦ㄲ戸㕣㕢慥摤㘸戰捡㘲慢搲㔲㉢挵捡愲㔶搰改㕤㠸戵㑡ぢ㕡㡢㑡㉥扦㔰㙡ㅡ昲㑢扤愹〵搵㈸ㄴ㥢㠵㈲㉢㤷㡣㠲愱戶ㄶㄷ搵㔲扥戸搸㉣㉤ㄶ㡡㘵㔶搴攵㤷㝢㔳换㙡㜱戱㤲㙦㌶换㈵捤㈸㘸㕡愵搹㉡愹昹㤶㙥攸㠶㕡捥ㄷ㔵㔵㕥敡㑤㉤攴昱㕡㐳㥤㘵㈳㕦㈸㤷㤹愶收搵㘲㌱挷㔴扤搴㉣㉦戴㑡㘹㤸っ㈷攲㝢㔴㔱㕥〱戸〲㔰㈵㤰㠶捤昰挱㘵㜴搵〰㔶〰㔶〹愴㕦㈰挰〷㌱㌵㕣搴挳㈱㐱㈱捦慡散㐰㈲㌴㠵㤶愰ぢ㉣㌱㌱㈱㕣ㅥ戹戵㥦㌰㤲摥戵㐷㤶㘱㈳搲敦㐸戴㘷㕢㌴慣㌹㔸捣㙦慤㔷愹愲㙣ㄲ㐸愵㘱㉢㜸㘲㤵慦ㄱ㜸愰戶摣ㄸ㝥晢㤴慦㔳昷ㄴ㜵㜳㍦㐰㡦慡扥扣㐵㍤㌳搴㌳㤰ㄴ愴㘱㙣挰愲㙣〳㐰㙤昸慢㕦ㅡ㘶挷㜹㔶愷捡㜴㕣㠲收扣㌴㐲敥昸㍣㘳㙥昴㝤㘷㤵摥㙢㡥㜱晡㌸㌹搸搰㉤㈵挴ㄷ敦づㄷㄸ㡡慣㠴㝦㝥㑤摣晣〶㜸㠶㔹っ㡣㑦搰㐷戹〹昴搰㡦摣戸㈳㥥昶敡ぢ㈹㕤戰㌷㝣㘲㌶晤㝡戰攳㔶㝢㑦捦て㜴㠵㌰搷㝤㜶戸摣敦愹㌶㝤捡㙡〳搶㕤戶攵昵搶搱㌵㥥っ㥤〶收昰㐸㜱愱摦ㅡ㜰敢ㄷ晢扤ㅢ㡥㑦て㙡㑣敦㘲昴㈹攴㈶挴戸㌰㌶搳㡡ㅥ㤹攱挷㠱㡤㥥搴㌶㜴〴捦㡢㘳㠲摡戲ㄹ昰愴㤰ㅢ㠰〲慦㈱摦〶㔸扡戴㜶㐹㉤㑢ㅦ㤳㈰捥扣挷㌰摢戱㈳㜴㈳愵㝣㥦愰〰戳〶敦〵〵晥㐶㝥㤳㠰戴㜴㘹昹㔲㔹晡㠸昶ㄸ㝢㈳㡣攸愰换㘸㤷ㄱ慢㑥挷㍥戹ぢ愱愲㕤摥㈲㈸㕣㈱㄰敥〲㔷㈵㌷〰㌸㈹㜹攱㤷戴つ挸㠱㑤愴ㄴ㡤愰㔰㈵㄰捥㠶户㤲㕢〰㝣㜶㐵昸㈰㥡つ扥愴ㄴ㐶㔰㠰〳〲〲捥慡㕡搴〰㌶㘱㈵㙡㠰㕣㘱㤵〰㐸愲慦搸㉣慣ㅡ捡㠳捦㐰昹〲摣㐰戹挲㘱㉣ㄹ㝤愷愳敦昳㔷㘶攱ち昸捡户㠴㈷㝦㕡㤵晥昶敥㉦晥晤挹㑢㤷㍦晣捤㤷搱昷扢敢㉦晣捡㉣晥昱戱㙡昸㍤㕦敤晣㝤㜱昶攳て㡢㔵〱昶㡥搷〶攵㐹㠰愷〰㥥㈶㈰扣㑦㠷ㅡ㝢㔷晦㜹㌴㜰攲慥づて㌱㔶㌲〳㌷挹㠱㘷㙤㠴㈷挹㐰㍣㥥㌴挲㙥ㄸ㌵㐵㘴搳戲㜸㌰㥢愲戴摡愳㠷攵㑤扡㐱㔲㌲㑤㍦㤹㐴㥥㡤㙥㤶挸㔲扡㠹㥢挲㕢㔸㉣ㅢ㕢ㅥ㘵㜲ㄳ挶㠶㑦㌷㝦㍤㐹て㘳㐱㐰㍦戳摣て㌹㌷愵ㄷ〹㐸㥣摣ㅦㅥ愳挵戱㤱ㅤ㍣ㄹ㙢㐰㈱ぢ晢晣攸扥ㄷ㡢挸挶敦敥ㄱ㐰摥愳捤〶敦㤸晡挰ㅤ㌳㈱晣㡣挴㡣っ㈴ㄵ晢㔱㡣㙢㈷散㔳戱㘹㡤㡣ㅢ㈸ㅥ㝤㜸㘲㐶㈰愵戸搴ㄳ收昴戸愳挵㈴昸捥㔱〲㤱㙦慤㠱〳㈳㉦扦㤳㤳愰扡㕢ㄲ㌰晦搳㕣て㑣㘸挲㙥㘸昸扤㌷㘹㌷㉣收散〶敤摥㙦扣攴㐶攸ㄹ㔹㜹㠷㈶㘱㉢㝣〴㤸㍡戰㉡㕥搴挳㝢㘱搲扣搷ㅦ散㠵改昲摥㘰愰㔷〲搵㘷ㄶ㡢㐰㤳捦㤱〲㐷㍦㑤攳捥㌷㘷攱㠷改㜱㔷㠸攱㉢㜶㠷㤶ち攰㈵㜰㈸〷㔱〵㡤㔹㔰㠴㑡ㄲ昴捦㠲㤲㝥ぢㄴ昴㕢㌸㜹慦㈵㜰㤴搴愳ㅣㄲ攸㤶㌴㔰挳㌱㈹㐷〴㈸ㄱ散づち㘸㔷攸㈳扣㐷愲㐷㕣㕤愶㐶㔲㠸㑤晥て㍢㘱㈸㈱ | F27: 㜸〱捤㔹换㙦ㅢ挷ㄹ攷㉥戹㑢㉥昵㘲㘲㍢敦㌴㡣㘳㌷㘹愴㌰愴㐸㕡㔴㔲㌵愶㈸㑢㔶㉣㕢㡥㈹摢㉤摡㠰ㄸ㜲㘷挵㡤昶愱敥㉥㘵㈹㤷ㄴ晤ぢ㠲ㄶ扤愵つち昴㔰〴〱晡㌸昶搰㜳搱㕥㝡㉣摡ㅥ㝡捡㈹㐰搳摣㝡㜲扦摦散㔲㈴㔷戴慣㌸㉥攰戱昵敤㍣扦㤹昹摥摦㌰㈱㈵ㄲ㠹扢㔴昰㐵㐹愱昲㕣昳挰て戸㕤㘸戸㤶挵㍢㠱改㍡㝥愱敥㜹散㘰挳昴㠳㈴㑤㔰㕢㈶㡤晢㑡换㌷摦攷㤹搶ㅥ昷㝣㥡愴㈴ㄲ㤹㡣㈶搳㌸㤰攰㉦搷㙦㘸㔸㌵㤹㈲戰搵㔸摥㙣扦㐷㔸㥢㠱敢昱戹晣慤㜰敤㔲愹㔴㈸ㄵ收换㡢愵㐲㜱㉥摦攸㔹㐱捦攳㑢づ敦〵ㅥ戳收昲搷㝢㙤换散㕣攱〷㕢敥づ㜷㤶㜸扢㔸㙥戳㑡慤㔴愹㔶㡤挵挵摡㈴㙤㥤戸搶㔸扥敥㜱挳㝦㔸㌸㔵攰摣㙣㉣ㄷ慥昱攰㘱攱㑣ㄳ㑥㐲戹攲摡捣㜴ㅥㄲ㔲〵戴慤慥昰㡥〹㈶㜰敥㤹捥㜶㠱㡥㍤㐲㘸㙡㉤ㄴ敡扥摦戳㜷挱捦〶户慣ㅢ摣挸搰㑡捤㕥昱㠳敢捣戳晤㐹ㅢ昴攳ㅥ㜷㍡摣㥦戶㉦敤㜷戸ㄵ㑤昴㌳昶㉤收㕤㘳㌶㑦愱㌲㘳㠷㍣㕣搷戹ㄳ㤸挱挱㤴㝤搳攷㌷㤸戳捤㌱㐵戱搷㝡愶㉥愵㔲昴㍦㤱㝣㜹摣挹〴愳攸㍣㜶愳换扣㐰戴挰挲搲戸戹㐳攲㈲㙥㌱㜲㉥㠸㔴㍥戶ち㍣㙢㥡昶ㄵ敥㌹摣挲㈶攰攴㙣㙣㤲㈰㔰挸㠷㐳㑡昵慦〳㉥㐹ㄳ㤱ㄲ攰㉥搸㐵〵戱㉡㕢㥥㐹搷散㔹捣㥢扢㙡㍡㑢愵敡挲攲㠵㑡㜱㙥挳摣攱㤶挹晤㘰愹㕣慡㉥捥搷㡡㜳㔷搹晥㔲㜹㘱戱㔴㉡㕦搰㌴㕡愹㘵㠱㘳㠲㐰晡慡敢㠲㐷摡㈴扡愷〸㐸愹㉦㐹〵㠷㌷挴㍣戹挵攴㔶㕢㙥㜵攴㤶㉥户戸摣㌲攴搶戶摣敡捡㉤㔳㙥扤㈷户㜶㘸㑥扦㘴搲㘹㌹㉡搳慦㕣晡昱敦㍦晢昲敡ㅦ㍦㌹晢摦㔳㙦㥣昹改攴っ㑤㝡㈷扡捣㡡挷敥搰搶〳挹㥢㉦ㄴ昱敦晥㉡㐷ㅡ㘷㔴㡤〵愳㔴搲慢㐵㔶㘶ち㉥㜵㔲摥收㘸敥愴㜱摢㜴㜴昷㡥㘰昶㜳换捣攷〳摥捦㐶㘳换㙥捦搱晤㘷挷て㌶〳ㄶ昰㘷攲㘳〳㈴㐷㤶㌵㐹ㄵ戸㉦昶晢㐶㝣搹㉤㘶昵㜸㝤摦っ㠷㥦㡦つ㤳㈲戸敤㝢㡦慥㝡晣㠷㠷愳㐷㑥㔴㈷㡢戹㈷㜰ㅦ戹㘵㌸ㄴ㥥㉢摦攸扡㍥㜷挴昱㘶敤敢㘶㘷㠷㝢㑤づ㝢换㜵㜱搵㌳ㄸ㡡戴㜱㜶搳愱㡢㤲㝥改㘷㠷㝢㡤㑢晢〱㜷㜴慥搳㜹㜷戹ㄷㅣ㙣戱戶挵㥦ㄸ㤹ㄲ敥㐹〳㑦㡦㜴慦扡㥤㥥摦㜰㥤挰㜳慤搱㤱扡扥挷挸〲攸㔷㕤㥤㤳〲愷㔰挸㥡㈷㤳㤲㤴㜸㜵㥣ㄶ〱慦㕦㄰㡣ㄸ㘲㌱昴昹愹㔱戱㉢摣愰摢搱㉤㉣づ㤹㤴捦摤〷㤹挰ぢ㌴摦扡昷挴愱㍢挱㌹㘱昶㉢昷㥥㉤捥㜸挸戹晦敦㘴㔹㍥ㄵ摤晥搲ㅥ㔹挹换捣搱㉤敥ㅤ敢㕡㈵㥣㐸㠳戲㈸晦㈶㠳㜰㑦敡挱ㅣ㐹晢搲㠱㜲挷搴㠳慥摡攵收㜶㌷愰㍥㜲扦㤹っ㐸㝢愴㘸㡦㔳㤷㜶ち攰㌴㠱㙣㌶愱㥥挱㈴㌵慢㍤ㄱ戶ㄵ搸愷慦㙥㝦攱攰㌵㘱敦挹㌹晢㡡扤敡㝡㝥㌲㌹敥㤶㤷㤹摦つ㈰㥥挷づ攲㙡摡㤳〰㑦ㄱ㔰㘰㈲敦㙢摥㜱攳ㄴ扣搸㤴扤挲つ㐶戱㠳搰㙥㠹㈹㜶攸㡥㔶戸摦搱攰户搶㐹㔷昶㔵慡㤱昲㑦摡㤰㝥扥ㅦ慣戰㠰愵㙤昲㠰挴㈵㡤㈶捤㡡㔵㘱つ㉢愷㐴㕦㝦㜵㌶㙡ㄱ㠶㥣愸づ㘱㤹㄰ㅤ㈱㈶㔲ㅣ搲㤷㐴㌲㠲挷㕦㠲捥づㅦ愵挶〵㝤搴㤳㤱㠳搵搷戸戳㜵戰换㝤㑣捦愸挷㤲㌲慥㕥㐰戶搹㘹摦っ㑣换㉦搰㐹搷㍣户户晢㌰昱〰㤷昶㌴㠱㝥㔱㍥㈳㈹㍥昹㥤㄰㌱愶昷挰㥢㔶㡢㉥㐷㉤昴㘸昰㠵ㅡ愴㤵㤰摤愵㡦㈸摡昳昴挹ㅥ㌷愶挰戳㝥ㄵ慦て攵㥢戴㠹㐲㕢ㅥㄷ㜱㑣㐶㌴㠸摡㔳昶㙤搷摢㘹扢敥づ攴㘹㕡戴晣㉥攷〱㘲㠳㠹㈸ㄶㄲ㌱㡦㈴㈵㤳㈳㝥㝣㈸㠸㐰㔴愱扥㐸㘰慡㙥㔹昹㍥㐶㕦㍤㑢㕤㐹㐴㈹㉦㔱攵㠵挶收愵㍣㉣慦㤵扦摥㈵ㅦ㤹㉦收㕦换㤷㡡愵ち挵挷晢㤶㙦㑢晦㈴㈲㈰㕡㜰晥晡㠳搶晢㝦晦搹㤵㑦㝦㤹晦摢敦晥昲敡㕢搲㍦愲㠱戸晦㔷㘰㑦扥㠲摤ㄶ攴㌶㙥㤹晣づ〴㙤摡愰挸慥搱昳〳㔷㘸挵㤴戱攲㕥㜳㠳ㄵ搳摦戵搸挱㈹㈳慡摣敥㜲㠷㝣㤶㐷慥㉢搶攷敥敥㜲㕤㌳㥡㙥捦敢昰昵㤵㐷挱愷ㄱ㌹㐸戲㠴㍢㤳㈵㉡て㘶愶ㄳ戴㤲散㈸㤵㠴〲攳ㅡ搷㌶ㄱ㕦づ㜹㐶㔱〵㉢㘶〶ㄴ摤㌲〳㡢㑦ㄸ挲㉢㠹㝡挶㈰㉡㔲㈰愰愷㡤慤㉥㐹攱捡㤴戱收㤹扡㘵㍡ㅣ捣㌸ㅤ㑥摤攰摢攴昴慦扢扥㠹㔰㝥捡搸昲㤸攳敦挲㝥㜵づㅥㅦ㘹〹㐳愷ㄸ换愶攳搳㌶㠲㡢愸捦ㄸ捤慥㝢㠷戲扢㥥敤慣戱㕤晦㤱攰ち㜴㍤㉣㠲㌵㤲㉣挹戲㤴㤱㌳て捡ㅦ昵㥢㠴敤挹㐱扣㥥㈷㔹つ㍣戳摤〳搱挴㐶昳〴㔳〰㠲㡦〹〵敥㌱㙥慤㠶搸ㄸぢ㌵㜰摥㤱㡣㘹慣搷㍢㑣㥢㠵㙢㝦ㄹ㙢㕥㈱昰昶摡捤昵㐱㄰晥戵㜲㕦〵づ晤挴㌱て散攸㜴㈸㐶㠸㠳㈰㔵愴㥤㈴つ㘸挵㐵㌳㙢㠸㌹㤰搲改㐱㜵㤵摣收愴戱挱摡摣㈲㙦㙦戳㘰㍡㙣㈰散戲㤹攵㐷㘳つ搷戶ㄹ挴づㄹ㕥戳挳㉣㥥㌱敡扤挰愵戴㐹㌳〸〸搹㡣扡搸㍥㜵戱晤搰㉦ㅢ㌷㤰〵㠸㍡㜰戹摢捣㌳㠳慥㙤㜶㌲㘸㈰㔲㝦㈴攴ㄵ㘹ㅢㄱ戳㕦晡昶㈴敥攸㐳㜷㑢散㉥㔰㙣っ搲㠱晤㈴搵戲愴搲㍦改〱㠳㐴戲㍥挲㈵㙡慦ㄲ㌶㐵扣戲㈰摡㐰昹愲晦㤶昳挵〷搴㈳っ㤴㠴ㄸて挳摡㙣㔴㐱㈳㠵㌰敢搸〸〲ㅥ㉢扢攱㌲㝤㤵㜵攸戵㈶ㅤ扤搵㘴㠸戵㌰㌷㕥づ㌱㕤㠳㥣ㄵ愵ㅦ㝢愶捥扤っ㍡㥡昴㈶㤴㐲㌴愸㠶㍣㈴敦㤶㑣㈸捡㐴㘶摣㕥敢㝤㕣攷㈲㑦㌹晣收戴㝥〴晦攷敦搴摥㠲㈶㘵戳挲㑤捤㔱㔵㝢㡤㠰㠴㘸ㄱ昷㠹㑤㈸㘰挲敢〴ㄴ挴㈵㜱摥㡣㠶㔷ㄴ㠴㈱愷㑤㠹㔷づ〴㝥ㄹち㤲㐴挴愸㠸㡢㑣っ㐵㝡㙡ㄸ攴㘵晡㑦㈷㙡㤳愴㥣敢搹搰挶㈲愲〴㍢㘴㌹㐵慣㔶攳㔹昲㤱㙤〹㤹摤攴㈲〴㤴㄰昶愸㐵〲㔳㔰ㄶ挲摦㕡晡敥敡捡挲㤱〰㈸㥢搵㐲搳㈵㈱ㄲ敡㕦㍤っ收〵㙤捡搴慤㔵〸㐸戰㍡㠲晢搵愸㠲㠶〲挹㠹ㄳ攴㠸戰㐲挲戳〶挴戶ㄹㅣ㔸㘴㉡㔰〵㠱挲ㅡ㔸ㅤづㄳ摢㕣㡦ㅥて㔳昱愴攵㜰㉤愲昴㠹搳戱㠴㔰㉣挳〸戴㐲昹㌳㠵㌰昷㕣㡦㐳て愲㐳慣㐱㔱ㄷ〸㥣扥㙡㜶㍣搷㜷㡤㈰摦㈴㔷㤸㐷㠲㙤㈴ㄲ挵扡昲㈷挲㌸㜶㑦㕣㉣攵攰戱㙡て〱㘷㜶挷㜱敦㌸攲㌴㡡㡦㜷〶㐱慦㜴ㅡ摢㈰㌱ㄲ攵㈵愲㘲づㅡ㈴㤲㤴㐵慡㑣㈵㜳㄰㐱昱㈴晡〶㔵捥㌷㤶ㅢ㌷㕡㤵㑡㙤扥㔴收㤴㤶户㙢ㄵ扤㕤㘴㡢愵㑥戵摣㌱㔸㤵戱挵㑥扢慣扥㜹㌸㜵扥㜴㘱愱㔲㥡㉦戶慢慣㔲㘹搷㌸㉢ㅢ攵ぢ敤㘲戵㌲捦ㄷ㙡㥣㤷搵㙦ㅦ㑥㘵㤵㜲㤹㉦㉥ㄴ㡢慣㔶慤搴㉥昰摡㝣戹戸搸㘱ぢ㤵昲〲㘷㌵扥㤸㠳ㅥ攰㈴摡ㄲ挰㜷〰摥㈲㤰㠳づ㠸晥㡢攸慡〳㉣ㄳ挸扤㑥㘰㌰ㅦ㔳挵㈲〵㘲㜵㔲㤱〵㈵愴戶搴㤱㜴㠹愷搲㘹改㝣㉣昷㍥㈲敡㠷挹㡢慡㐲搲㤵㍦㄰㠳㑥戶㘸㤴晦㔸㉣㜲捦㌵慡㘸㤷〹㘴㜳㤰㜸挱㡡㜵慡㍣搶㔸㙥㡤㍥㔲慡㙦㔳昷㈴㜵ぢ㙤愶搷㑦㕦扤㐲㍤搳搴㌳攴摡㜳㔰ㄹ㐱㤶つ慡㠸㔷㍢昱㝥㤷㠳昲〸挶㙦㔲㘵㉡愹㠰晦㙦挶慥㍢㍥㕡㤸㡤扦搲㕣愲㔷㤷〳㥣㍥㐹㘶㌲㌴㉥㈹昹㡤〷挳〵㠲挲㈲㡡扦摦ㄲ㌵扦〶㥥㔱ㄲ〳攳ぢ昴愷扤〳昴㄰慡攲戸㈳ㅥ昷㍣ぢ㉥㥤戱搷㝤㈲㌶㍤昳㙦戹昵挳㌷攲挷晡㑣㤸敤㍦ㅥ㥣ㅦ昴搴摢㍥挵愶〱敦㉦摢昴づ搷㔱㌲㑥敡㑡〳戳㜸㙡㌸㌳㘸つㄹ攷㘷〷扤敢㡥㑦捦㘲㕣敦㘳昴挹㜱愶攴愴㌴㌶㕥㡡㕥㠳㘱㡤㠱㡤ㅥ挶搶㜵戸挰㘷挷戸愶㘵㌳㄰愱㥤㔰〰つ扡慦㌶〱㤶捥慤㥥㉢㤷㤵㑦㠹ㄱ㈷摥㘳㤴散搸ㄱ㔸戳摡㑤㠲ㄲ昴ㄸ戴㤷㌴㔸つ昵㌶㠰搸愴㈴晤㥡㌶挱㐶㤰愴慣昶㍤㑣㠲ㄶ㠷戳㘱㌸搴敦〳㘰昶晣〵改㔷搱㙣挸㜶㔶㝢㤷愰㜴㤱〰㄰㠸㑢挰㌰愰㠱㜱〹〶愲㡦㝡〶㉡〶㑥攲㙦愸㝣㠱捤㔰㉥ち㤸挸㐴摦㕣昴㍤㝤㜱〶㝡㈹㔶扥㉢扤昸㤳扡昲慦て㍥晥捦㈷㙦㥥晦昹㙦敥㐶摦て戰㜲晦㤹ㅡ昶愶敦㘵昱晤昰昳㡤扡〴攵㐳〲慦扤〸㜰ㄶ攰㈵〲搲挷㜴挲戱改敦㉦愲㠱㈳改㉦搴昵㝥改敦搰㑢㌱㉣扥㘲挰挵㑤ㄸ㘱㌷㌴㡣㥣㥣㘹㔹挲㍦㑣㔲愴敡搱㕢敤〶㈵㘵ㄴ㥦搲てつ㤱㤹愱㘴つ㡥扦ㅦぢ㘹愲㠵挵慡戱改㔱㜰㤴㌶搶㝤㑡愶昵っ扤㌵〵〱晤㌸昱㈸㠴戱攴戱㔳㤰ㅦ戲㐵㜸摦㤵挷㍡㑢搰㘴慣㌴㠷昹敤㠰ㅥ晤㈷㔸ㄹ〱敥㠳攵搵㙡㠷㌶ㅢ㑥摢昴愱戴㉤㈵㝤㐴㙣㠶㔳捦㈶㝥㤴戸㡢㘳挳つ㘸㥣㍥慡㐱〰敦㈸㈲搶㈱㤰搵戶愹㈷っ㤳㤱昶㈴ㄴㄸ戲昸〵ㄱ挲慣㠲〲戱挷搴㠹〹摣扡㕦㔲搰挵攳散〰戴㈶㙤户ㄸ㝥㈵捤搸㉤㡢㍢摢㐱昷昰㤷㔱搲㘹㝡㤹搵㑣㥡㠴慤昰㈷㐱㕦㠱㔵㝢㉦敡ㄱ扤搰㑢搱扢㌳搴慢攰㝥㈷㘶㠰㐴㤳㑦㤱愸㐶㍦摤㈲㘱㥡戵昰挳敤戸昸㝢㌴㍦戵㘸愹〴慡〱㠷㘶㐷ㄵ㌴㘶㜰㜶㔴㌲戸改っ捥㍣㘸攱慣㠷㉤㐹㈰愱ㅥ㉤捣戲愹㐶㈵〷㘴戰㌳㥡㑢㠰攲愶晥愰㠴㌶㝣愹昴㈱戱ㄵづ㙣㤹ㅡㄹ㈹㌱昱㍦㘵ㅣ昲ㅤ | G27: 㜸〱捤㔹捦㜳ㅢ㔷ㅤ搷慥戴慢㕤昹㤷摡㈴㙤搳ㅦ㔴㑤ㄳ㕡㙡㔷㤵㉣挹戶摡㥡㐴㤶㘲挷㡤ㄳ㈷㤱㤳挰㌰㐵慣戴㙦慤㡤昷㠷搹㕤㌹㌶㤷昶㑦㘰㌸㌱㐳㝦㕣㌸〰挳っ㕣换㡤ㅢ㜰攵〸〷㑥㥣㤸愱㜰㘰㠶㔳昸㝥摥慥㉣㘹慤㌸㙥ㅡ㘶昲ㄲ㝦昷晤晣扥昷扥扦扦㑦〹㈱㤱㐸㍣愰㠲㉦㑡ち㤵㤷㥢〷㝥挰散㝣摤戵㉣搶〹㑣搷昱昳㌵捦搳づ㌶㑣㍦㐸搲〴戹㘵搲戸㉦戵㝣昳㐷㑣㘹敤㌱捦愷㐹㔲㈲愱㈸慡㐸攳㐰㠲扦㙣扦愱㘲搵㘴㡡挰㔶㝤㘵戳㝤㡦戰㌶〳搷㘳㜳戹㍢攱摡攵㘲㌱㕦捣捦㤷慡挵㝣㘱㉥㔷敦㔹㐱捦㘳换づ敢〵㥥㘶捤攵㙥昴摡㤶搹戹捡づ戶摣ㅤ收㉣戳㜶愱搴搶捡㑢挵㜲愵㘲㔴慢㑢㤳戴㜵攲㝡㝤攵㠶挷っ晦㐹攱㤴㠱㜳戳扥㤲扦捥㠲㈷㠵㌳㑤㌸〹㘵挳戵㌵搳㜹㐲㐸㈵搰戶搲㘰ㅤㄳ㑣㘰捣㌳㥤敤㍣ㅤ㝢㠴搰搴㕡捣搷㝣扦㘷敦㠲㥦㜵㘶㔹户㤸愱搰㑡搵㙥昸挱つ捤戳晤㐹ㅢ昴㘳ㅥ㜳㍡捣㥦戶㉦敦㜷㤸ㄵ㑤昴ㄵ晢㡥收㕤搷㙣㤶㐲㘵挶づ㜹戸慥㌳㈷㌰㠳㠳㈹晢戶捦㙥㘹捥㌶挳ㄴ挹㕥敢㤹扡㤰㑡搱晦㐴昲㡤㜱㈷攳㡣愲昳搸昵慥收〵扣〵ㄶㄶ挷捤ㅤㄲㄷ㝥㡢㤱㜳㐱愴㜲戱㔵攰㔹搳戴慦㌲捦㘱ㄶ㌶〱㈷㘷㘳㤳㌸㠱㐲㍥ㅣ㔲慡㝦ㅤ㜰㐹㤸㠸㤴〰㜷挱㉥㌲㠸㔵摡昲㑣扡㘶捦搲扣戹㙢愶戳扣㔴㔹㔸㈸ㄷ收㌶捣ㅤ㘶㤹捣て㤶㡢㡢挵搲晣㔲㘱敥㥡戶扦㍣㕦㔹愸㔶攷ぢ慡㑡ぢ搵っ㔰㑣㄰㐸慤㜹愶慥㑥愲㙦㡡㠰㤰晡㌷愹摦昰㘶㤸㈴戶㌴戱搵ㄶ㕢ㅤ戱愵㡢㉤㈶戶っ戱戵㉤戶扡㘲换ㄴ㕢昷挴搶づ捤改ㄷ㈵㥤ㄶ愳昲挵㡢㥦晣昴㡦户㜶敡ㅦ晦昹㔳晦慣㝤攷㡢挹ㄹ㥡㜴㌳扡㐸挳搳敥㤳㘸っ愴㙥㍥㕦挰扦㐷慢ㅢ㘹㥢㔱㌱ㄶ㡤㘲㔱慦ㄴ戴㤲㈶攱㐶㈷攵㙢㤶收㑥ㅡ㜷㑤㐷㜷敦㜳㐶扦扣愲昹㙣挰昷搹㘸㙣挵敤㌹扡晦搲昸挱㘶愰〵散挵昸搸〰挹㤱㘵㑤㔲〳收昳晤扥ㄱ㕦㜶㐷戳㝡慣戶㙦㠶挳慦挴㠶㐹〹摣昶挳㐷㔷㍤昶挳挳搱㈳㈷慡㤱戵摣攳戸㡦摣㌲ㅣち捦㤵慢㜷㕤㥦㌹晣㜸戳昶つ戳戳挳扣㈶㠳慤㘵㍡扦敡ㄹっ㐵㥡㌸扢改搰㐵㐹户昴㜳挳扤挶攵晤㠰㌹㍡搳改扣扢捣ぢづ戶戴戶挵㥥ㅢ㤹ㄲ敥㐹〳㘷㐷扡㔷摤㑥捦慦扢㑥攰戹搶攸㐸㑤摦搳㐸晢昵㙢慥捥㐸㜹㔳㈸㘴挹㤳㐹㐱㐸扣㌵㑥㠳㠰搷捦㜳㐶っ戱ㄸ扡晣挲愸搸攵㙦搱敤攸ㄶㄶ㠳㑣㡡攷ㅦ㠱㡣攳〵㥡㙦㍤㝣攲搰㥤攰㤸㌰晢捤㠷捦收㘷㍣攴摣晦㜷戲㈸㥥㡡㙥㝦㜹㡦㉣攴ㄵ捤搱㉤收ㅤ敢㔶〵㥣㐸㠵戲㐸晦㈴㠳昰㔰敡挱ㄴ〹晢挲㠱㜴摦搴㠳慥摣㘵收㜶㌷愰㍥㜲扤㡡〲搲ㅥ㈹敡戳搴愵㥥〲㌸㑤㈰㤳㐹挸㘷㌰㐹捥愸捦㠵㙤〹挶改慢摢㕥㌸㜷㤵摢㝡㜲捣扥㘴慦扡㥥㥦㑣㡥扢攵ㄵ捤敦〶㄰捦㘳〷㜱㌵昵㜹㠰ㄷ〸㐸㌰㤱㡦㌴敤戸㜱ちㅥ㙣捡㙥㌰㐳愳戸㠱㙢户愰㐹㜶攸㡡ㅡ捣敦愸昰㔹敢愴㉢晢㌲搵㐸昹㈷㙤㐸㍦摢てㅡ㕡愰愵㙤昲㝥挴㈵㤵㈶捤昲㔵㘱つ㉢愷㜸㕦㝦㜵㈶㙡ㄱ㠶㉣慦づ㘱㤹攰ㅤ㈱㈶㔲ㅣ搲㤷㐴㌲㠲挷㕦㠲捥づ晦㈴挷〵㝤搴㡢㤱㜳搵搷㤸戳㜵戰换㝣㑣㔷攴㘳㐹ㄹ㔷㉦㈰摢散戴㙦〷愶攵攷改愴㙢㥥摢摢㝤㤲㜸㠰㑢㍤㑢愰㕦愴扦㤳ㄴ㥦晣㑥㠸ㄶ搳㝢攰㑤慢㐵㤷愳ㄶ㝡㔴昸㐲ㄵ搲㑡挸ㅥ搰㠷ㄷ昵ㄵ晡㘴㡥ㅢ㤳攰㔹扦㡡挷㠷昲㑤摡㐴愱㉤㡦昱ㄸ㐶攱つ愲昶㤴㝤搷昵㜶摡慥扢〳㜹㥡收㉤扦换㔸㠰戸㘰㈲㡡㠳㜸扣㈳〸挹攴㠸ㅦㅦち㈰㄰㔱挸慦ㄱ㤸慡㔹㔶慥㡦搱㤷捦㔱㔷ㄲㄱ捡敢㔴㜹戵扥㜹㌹〷换㙢攵㙥㜴挹㐷收ち戹户㜳挵㐲戱㑣戱昱扥攵摢挲㕦㠹〸㠸ㄶ扥㝦昷捤晦㕥㈹㝦搰昸攵㝦㝥晦昶戹㡢敦㔷㠵扦㐴〳㜱晦㉦挱㥥㝣〵扢捤挹㙤摣㌱搹㝤〸摡戴㐱㔱㕤扤攷〷㉥搷㡡㈹愳攱㕥㜷㠳㠶改敦㕡摡挱㈹㈳慡摣敤㌲㠷㝣㤶㐷慥㉢搶攷敥敥㌲㕤㌵㥡㙥捦敢戰昵挶搳攰搳㠸ㅣ㈴㔹摣㥤㠹〲㤵挷㌳搳〹㕡㐹㜶㤴㑡㐲㠲㜱㡤㙢ㅢ㡦㉤㠷㍣㈳慦㠲ㄵ㌳〳㡡㙥㤹㠱挵㈶っ敥㤵㜸㕤㌱㠸㡡ㄴ〸攸㘹㘳慢㑢㔲搸㤸㌲㄰㈹㕡愶挳挰㡣搳攱搴つ戶㑤㑥晦㠶敢㥢〸攳愷㡣㉤㑦㜳晣㕤搸慦捥挱戳㈳㉤㙥攸㈴㘳挵㜴㝣摡㠶㜳ㄱ昵ㄹ愳搹㜵敦㔳㘶搷戳㥤㌵㙤搷㝦㉡戸〲㕤てぢ㘷㡤㈰ち愲㈸㈸愲昲戸晣㤱扦㐹搸㥥ㅦ挴敡㌹㤲搵挰㌳摢㍤㄰㡤㙦㌴㑦㌰〵挰昹㤸㤰攰ㅥ攳搶㙡㠸㡤戱㔰〳攷ㅤ挹㤶挶㝡扤挳㤴㤹扢昶㌷戰收㑤〲ㅦ慣摤㕥ㅦ〴攱㕦㉢敦㤵攰搰㑦ㅣ昳挰㡥㑥㠷㘲㠴㌸〸㔲㐵摡㐹搲㠰㔶㕣㌴㌳〶㥦〳㈹㥤ㅥ㔴㔷挹㙤㑥ㅡㅢ㕡㥢㔹攴敤㙤㉤㤸づㅢ〸扢㙣捤昲愳戱扡㙢摢ㅡ挴づ搹㕤戳愳㔹㑣㌱㙡扤挰愵㤴㐹㌵〸㜰搹㡣扡戴㝤敡搲昶㐳扦㙣摣㐲ㄶ挰敢挰攵㙥㙢㥥ㄹ㜴㙤戳愳愰㠱㐸晤愹㤰㔷愴㙤㐴捣㝥改摢㤳戸愳て摤㉤戱㍢㑦戱㌱㐸〷昶㤳㔴㡢㠲㑣晦㠴挷っㄲ挹晡㜰㤷愸扥㐵搸㈴晥挲㠲㘸〳攵换晥㍢捥㤷ㅦ㔱て㌷㔰〲㘲㍣っ慢戳㔱〵㡤ㄴ挲慣㘳㈳〸㜸慣捣㠶慢改慢㕡㠷㕥㙡搲搱㍢㡤㐲慣㠵戹昱戲㠸改敡攴慣㈸晤搸㌳㜵收㈹攸㘸搲㝢㔰ち搱愰ㅣ昲㤰扣㕢㌲㈱㐹ㄳ捡戸扤搶晢戸捥㐷㥥㜲昸扤㘹晤〸晥㝦摣㕣扡〸㑤捡㘴戸㥢㥡愳慡晡㌶〱〱搱㈲敥ㄳ㥢㤰挷㠴㜷〸㐸㠸㑢攲扣ㄹつ慦㈸〸㐳㑥㥢攲㉦ㅣ〸晣ㄴち㤲㜸挴㈸昱㡢㑣っ㐵㝡㜲ㄸ攴㈹晤㘷ㄳ戹㐹㔲捥昴㑣㘸㘳ㄱ㔱㠲ㅤ愲㤸㈲㔶换昱㉣昹挸戶㠴捣㙥㌲ㅥ〲ち〸㝢攴〲㠱㈹㈸ぢ攱㙦㉤㝦㘷戵戱㜸㈴〰捡㘴搴搰㜴〹㠸㠴晡㔷て㠳㜹㑥㥢ㄲ㜵慢㘵〲〲慣づ攷㝥㈵慡愰㈱㐱㜲攲〴㌹㈲慣㤰昰㡣〱戱㙤〶〷ㄶ㤹ち㔴㐱愰戰〶㔶㠷挳挴㌶搷愳㠷挳㔴㍣㘹㌹㕣㡢㈸㝤攲㜴㉣㈱攴换㌰〲慤㤰晥㐴㈱捣㐳搷攳搰㠳攸㄰㙢㔰攴㐵〲愷慦㤹ㅤ捦昵㕤㈳挸㌵挹ㄵ收㤰㘰ㅢ㠹㐴愱㈶晤㠱㌰㡥摤ㄳㄷ㑢㌹㜸愸摡㐳挰㤹搹㜱摣晢づ㍦㡤攴攳㥤㠱搳㉢㥤挶㌶㐸㡣㜸㜹㥤愸㤸㠵〶昱㈴愵㑡㤵愹㘴ㄶ㈲挸㥦㐳摦愵捡㠵晡㑡晤㔶㙢㘱㘹扥扡戸㔰㉡㔷收㍢敤昲㝣㘵㘹愹㔲愲㉥㔶搶昴㔲挹愰㥡晣摥攱㔴㠳愶㤵慢摡挲㘲戵摣㈹㉦㉥㙡搵㑥㥢㜵摡㠵㠵〲㘳㤵〵㥡㉣扦㝦㌸戵㔴敥㉣㘸㔵㐳搳㔹㘱戱捣慡戴愲㕡㔸搰㍡搵㐵㝤戱㔸㌰捡㕡ㄶ㝡㠰㤳愸换〰摦〶戸㐸㈰ぢㅤ攰晤㤷搰㔵〳㔸㈱㤰㝤㠷挰㘰㍥愶昲㐵ㄲ挴敡愴㈲ぢ㑡〸㙤愱㈳攸〲㑢愵搳挲㠵㔸敥㝤㐴搴て㤳ㄷ㔹㠶愴㑢扦㈳〶㥤㙣搱㈸晦戱㤸攷㥥㙢㔴㔱慦㄰挸㘴㈱昱㥣ㄵ敢㔴㜹愶扥搲ㅡ㝤愰㤴㍦愰敥㐹敡收摡㑣㉦㥦扥㝣㤵㝡愶愹㘷挸戵㘷愱㌲㥣㉣ㅢ㔴攱㑦㜶晣昱㉥ぢ攵攱㡣摦愴捡㔴㔲〲晦摦㡢㕤㜷㝣戴㌰ㅢ㝦愵戹㑣慦㉥〷㌸㝤㤲捣㘴㘸㕣㔲攲扢㡦㠷ぢ〴㠵㐵攴㝦扦㈵㙡㝥つ㍣愳㈴〶挶㔷改㑦扤〹昴㄰慡挲戸㈳ㅥ昷㌴ぢ㉥㥤戱搷㝤㈲㌶㍤昱㙦戹戵挳昷攱㘷晡㑣㤸敤㍦ㅥ㕣ㄸ昴搴摡㍥挵愶〱敢㉦摢昴づ搷㔱㌲㑥敡㑡〳戳㜸㙡㌸㌳㘸つㄹ攷㤷〶扤敢㡥㑦捦㘲㑣敦㘳昴挹㜱愶挴愴㌰㌶㕥㡡㕥㠲㘱㡤㠱㡤ㅥ挶搶㜵戸挰㤷挶戸愶ㄵ㌳攰愱ㅤ㔷〰ㄵ扡㉦㌷〱㤶捦慦㥥㉦㔵愴㕦ㄳ㈳㑥扣挷㈸搹戱㈳戰㘶搴摢〴〵攸㌱㘸㉦愸戰ㅡ昲㕤〰扥㐹㐹昸〵㙤㠲㡤㈰㐹ㄹ昵扢㤸〴㉤づ㘷挳㜰挸摦〳挰散昹㈵攱攷搱㙣挸㜶㐶晤㤰愰㜰㠹〰㄰昰㑢挰㌰愰㠱㜱〱〶愲㡦㝡〶㉡〶㑥攲㙦愸㝣㠹捤㔰㉥㜱㤸㔰愲㙦㌶晡㥥扥㌴〳扤攴㉢㍦ㄴ㕥晢㐹㑤晡摢㐷㥦晦敢㔷敦㕤昸昴㌷て愲敦㐷㔸昹昱昹户戰㌷㝤摦攵摦ㅦ晣慣㕥ㄳ愰㝣㐸攰搵搷〰捥〱扣㑥㐰昸㥣㑥㌸㌶晤晤㉣ㅡ㌸㤲晥㐲㕤ㅦ㤵晥づ扤ㄴ挳攲㑢〶㕣摣㠴ㄱ㜶㐳挳挸挹㤹㤶挵晤挳㈴㐵慡ㅥ扤搵㙥㔰㔲㐶昱㈹晤挸㄰㤹ㄹ㑡搶攰昸晢戱㤰捡㕢㔸㉣ㅢ㥢ㅥ〵㐷㘹㘳摤愷㘴㕡㔷攸慤㈹〸攸㠷㠹愷㈱㡣㈵㡦㥤㠲晣㤰㉤挲晢慥㌸搶㔹㠲㈶㘳愵㌹捣㙦〷昴攸㍦挱㡡〸㜰ㅦ㉦慦㤶㍢戴搹㜰摡愶て愵㙤㈹攱ㄳ㘲㌳㥣㝡㈶昱㜱攲〱㡥つ㌷愰㌲晡挸〶〱扣愳昰㔸㠷㐰㐶摤愶㥥㌰㑣㐶摡㤳㤰㘰挸攲ㄷ㐴〸戳ちち挴ㅥ㔳㈷㈶㜰敢㝥㐹㐱ㄷ㡦戳〳搰㥡戴摤搲昰ぢ愹㘲户㉣收㙣〷摤挳㕦㐵㐹愷改㘵㔶㌵㘹ㄲ戶挲㥦〰㝤〵㔶昵㕥搴挳㝢愱㤷扣㜷㘷愸㔷挲晤㑥捣〰㠱㈶㥦㈲㔱㡤㝥戶㐵挲㌴㙢攱㐷摢㜱昱昷㘸㝥㙡搱㔲〱㔴〳づ搵㡥㉡㘸捣攰散愸㈸戸改っ捥㍣㘸攱慣㠷㉤㠱㈳愱ㅥ㌵捣戲愹㐶㈵ぢ㘴戰㌳慡㑢㠰攲愶晥愰㠰㌶㝣愹昰㘳㘲㉢ㅣ搸ち㌵ㄴ㈱㌱昱㍦㉦改散慤 | H27: 㜸〱捤㔹摢㡦ㅢ㔷ㄹ昷㡣㍤攳ㄹ敦捤㙤㉥㙤㐹㑡㥤ㅢ㉤摤慤㙢敦摡昱㙥搳愵昱㝡㉦搹㘶㤳㑤攳㑤〲㐲㤵㌵昶㥣㔹㑦㜶㉥换捣㜸戳㕢㈱愵㙦㍣㈱愱㍥㈲㘸㈴挴〳㐲㐸昰摣〷〴㐸㐸㠸晦〰挱〳扣㠰㤰㤰㈸㍣昵愹攱晢㥤ㄹ慦敤㔹㘷戳㑤㠳㤴㤳散㌷攷晡㥤㜳扥晢昹㥣㄰ㄲ㠹挴㐳㉡昸愲愴㔰㌹㕤摦昳〳㘶攷㙢慥㘵戱㔶㘰扡㡥㥦慦㝡㥥戶户㘶晡㐱㤲㈶挸つ㤳挶㝤愹攱㥢ㅦ㌰愵戱挳㍣㥦㈶㐹㠹㠴愲愸㈲㡤〳〹晥戲摤㠶㡡㔵愳㈹〲ㅢ戵㠵昵收㕤挲㕡て㕣㡦㑤攵㙥㠷㙢攷㡢挵㝣㌱㍦㍤㌳㔷捣ㄷ愶㜲戵㡥ㄵ㜴㍣㌶敦戰㑥攰㘹搶㔴敥㐶愷㘹㤹慤慢㙣㙦挳摤㘲捥㍣㙢ㄶ㘶㥡㕡㘹戶㔸㉡㤷㡤戹戹搹㔱摡㍡㜱扤戶㜰挳㘳㠶晦戴㜰捡挰戹㕥㕢挸㕦㘷挱搳挲㤹㈶㥣㠴㜲搱戵㌵搳㜹㑡㐸㈵搰戶扣挸㕡㈶㤸挰㤸㘷㍡㥢㜹㍡昶〰愱愹㔵挹㔷㝤扦㘳㙦㠳㥦㌵㘶㔹㌷㤹愱搰㑡搵㕥昴㠳ㅢ㥡㘷晢愳㌶攸挷㍣收戴㤸㍦㙥㉦敤戶㤸ㄵ㑤昴ㄵ晢戶收㕤搷㙣㤶㐲㘵挲づ㜹戸慡㌳㈷㌰㠳扤㌱晢㤶捦㙥㙡捥㈶挳ㄴ挹㕥改㤸扡㤰㑡搱晦㐴昲搵㘱㈷攳㡣愲昳搸戵戶收〵扣〵ㄶㄶ㠷捤敤ㄳㄷ㝥㡢㠱㜳㐱愴㜲戱㔵攰㔹摤戴慦㌲捦㘱ㄶ㌶〱㈷㈷㘳㤳㌸㠱㐲㍥散㔳慡㝢ㅤ㜰㐹ㄸ㠹㤴〰㜷挱㉥㌲㠸㜵㜱挳㌳改㥡ㅤ㑢昳愶慥㤹捥㝣愹㔲扡㌸㕢挹㤷愷搶捣㉤㘶㤹捣て收攷㑡㜳㌳㤵昲搴㌵㙤㜷扥㔸㥡㉥ㄵ㉥㑥攷换慡㑡㙢搵っ戰㡣㄰ㄸ㕤㜵晣㐰戳㉣つ慣㔰㐷㌱㌶㐶㐰㐸晤㤷㌴戱㝦㕦㑣ㄶㅢ㥡搸㘸㡡㡤㤶搸搰挵〶ㄳㅢ㠶搸搸ㄴㅢ㙤戱㘱㡡㡤扢㘲㘳㡢收㜴㡢㤲㑥㡢㔱昹晤搲㑦㍥晢㕥捥戸晥昱摦晥㤴㝥晢㠳捦㘷㐷㈷㘸搲㝢搱㥤ㄶ㍤敤ㅥ㐹㐹㑦〰愷昳〵晣㝢扣收㤱攲ㄹ㘵愳㘲ㄴ㡢㝡戹愰捤㘸ㄲ㙥㜶㔴ㄶ㘷㘹敥愸㜱挷㜴㜴昷ㅥ攷昹改〵捤㘷㍤ㄱ㤸㡣挶ㄶ摣㡥愳晢愷㠶て搶〳㉤㘰㕦㠹㡦昵㤰ㅣ㔸㔶㈷㡤㘰㍥摦敦慢昱㘵户㌵慢挳慡扢㘶㌸晣㜲㙣㤸昴挱㙤㍥㝡㜴搹㘳摦搹ㅦ㍤㜰愲㉡ㄹ捥ㅤ㡥晢挰㉤挳愱昰㕣戹㕡摢昵㤹挳㡦㌷㘹摦㌰㕢㕢捣慢㌳㤸㕤愶昳慢㥥挰㔰愴㤴㤳敢づ㕤㤴搴㑣㍦摢摦㙢㉣敤〶捣搱㤹㑥攷摤㘶㕥戰户愱㌵㉤㜶㜲㘰㑡戸㈷つ扣㌴搰扤散戶㍡㝥捤㜵〲捦戵〶㐷慡晡㡥㐶㠶㐰扦收敡㡣昴㌸㠵㐲㐶㍤㤹ㄴ㠴挴敢挳㤴〹㜸晤㍣㘷㐴ㅦ㡢愱搶㉦づ㡡㕤晥㈶摤㡥㙥㘱㌱挸愴㜸晥㌱挸㌸㕥愰昹晡愳㈷昶摤〹㍥ち戳㕦㝢昴㙣㝥挶㝤捥晤㝦㈷㡢攲戱攸昶㑢㍢㘴㉣慦㘸㡥㙥㌱敦㔰て㉢攰㐴㉡㤴㐵晡㌷ㄹ㠴㐷㔲て㔶㐹搸ㄵ昶愴㝢愶ㅥ戴攵㌶㌳㌷摢〱昵㤱ㄷ㔶ㄴ㤰昶㐰㔱㥦愷㉥昵ㄸ挰㜱〲㤹㑣㐲㍥㠱㐹㜲㐶㍤ㄹ戶㈵ㄸ愹㉦㙥㠶攱攷㔵㙥昶挹㐷晢㤲扤散㝡㝥㌲㌹散㤶㔷㌴扦ㅤ㐰㍣てㅤ挴搵搴ㄷ〰㕥㈴㈰挱㐴㍥搶捡攳挶㈹㌸戳㌱㝢㤱ㄹㅡ㠵㄰㕣扢〵㑤戲㐳慦戴挸晣㤶ち昷戵㑡扡戲㉢㔳㡤㤴㝦搴㠶昴戳摤㘰㔱ぢ戴戴㑤㡥㤰戸愴搲愴㐹扥㉡慣㘱攵ㄸ敦敢慥捥㐴㉤挲㤰攵搵㍥㉣㈳扣㈳挴㐴㡡㐳晡㤲㐸㐶昰昰㑢搰搹攱慡攴戸愰て㍡㌴昲戳晡ち㜳㌶昶戶㤹㡦改㡡㝣㈸㈹攳敡〵㘴敢慤收慤挰戴晣㍣㥤㜴挵㜳㍢摢㑦ㄳて㜰愹㉦ㄱ攸ㄶ改敦㈴挵㐷扦ㄳ〲挷昴づ㜸搳㘸搰攵愸㠵ㅥㄵ扥㔰㠵戴ㄲ戲㠷昴攱㐵㝤㤹㍥㤹挳挶㈴㜸搶㉦攲晣愱㝣愳㌶㔱㘸挳㘳㍣㥣㔱㜸㠳愸㍤㘶摦㜱扤慤愶敢㙥㐱㥥挶㜹换㙦㌳ㄶ㈰㐴ㄸ㠹㐲㈲ㅥ晡〸㐲㌲㌹攰挷晢㘲〹〴ㄷ昲ㄹ〲㘳㔵换捡㜵㌱晡昲㔹敡㑡㈲㔸㌹㐷㤵㔷㙡敢㑢㌹㔸㕥㉢㜷愳㑤㍥㌲㔷挸扤㤱㉢ㄶ㡡㈵ち㤳㜷㉤摦ㄶ晥㐲㐴㐰戴昰摢㡦㌶摥昸攷戹敦㕥㜹㜰昲ㅦ㤵摦㝤晦㌷㍦ㄴ晥ㅣつ挴晤扦〴㝢昲〵散㌶㈷户㜱摢㘴昷㈰㘸攳〶〵㜸戵㡥ㅦ戸㕣㉢挶㡣㐵昷扡ㅢ㉣㥡晥戶愵敤ㅤ㌳愲捡㥤㌶㜳挸㘷㜹攴扡㘲㝤敥昶㌶搳㔵愳敥㜶扣ㄶ㕢㕤㝣ㄶ㝣ㅡ㤱㠳㈴㡢扢㌳㔱愰昲㘴㘶㍡㐱㉢挹㡥㔲㐹㐸㌰慥㜱㙤攳㘱㘶㥦㘷攴㔵戰㘲愲㐷搱つ㌳戰搸㠸挱扤ㄲ慦㉢〶㔱㤱〲〱㍤㙤㙣戴㐹ちㄷ挷㡣ㄵ捦搴㉤搳㘱㘰挶昱㜰敡ㅡ摢㈴愷㝦挳昵㑤㠴㤱㘳挶㠶愷㌹晥㌶散㔷㙢敦昹㠱ㄶ㌷㜴㤲戱㘰㍡㍥㙤挳戹㠸晡㠴㔱㙦扢昷攸㤱搷戱㥤ㄵ㙤摢㝦㈶戸〲㕤てぢ㘷㡤㈰ち愲㈸㈸愲昲愴晣㤱扦㐶搸㕥攸㠵敤㌹㤲搵挰㌳㥢ㅤ㄰㡤㙦㌴㑤㌰〵挰昹㤸㤰攰ㅥ攳搶慡㡦㡤戱㔰〳攷ㅤ㜸㌸つ昵㝡晢慦㘷敥摡㕦挵㥡搷〸扣扢㜲㙢戵ㄷ㠴㝦愹㈷戰〴㠷㝥攴㤸〷㜶㜴㍣ㄴ㈳挴㐱㤰㉡搲㑥㤲〶戴攲愲㤹㌱昸ㅣ㐸改㜸慦扡㑣㙥㜳搴㔸搳㥡捣㈲㙦㙦㙢挱㜸搸㐰搸㘵㙢㤶ㅦ㡤搵㕣摢搶㈰㜶㜸攸搵㕢㥡挵ㄴ愳摡〹㕣㝡㍤愹〶〱㉥㥢㔱㤷戶㑢㕤摡㙥攸㤷㡤㥢㜸〵昰㍡㜰戹㥢㥡㘷〶㙤摢㙣㈹㘸㈰㔲㝦㈶攴ㄵ捦㌶㈲㘶户㜴敤㐹摣搱㠷敥㤶搸㥤愷搸ㄸ愴〳晢㐹慡㐵㐱愶㝦挲ㄳ〶㠹㘴㝤戸㑢㔴㕦㈷㙣ㄲ㑦戶㈰摡㐰昹戴㥢搲昹昴㍥昵㜰〳㈵㈰挶挳戰㍡ㄹ㔵搰㐸㈱捣㍡㌴㠲㠰挷捡慣戹㥡扥慣戵㈸㘹㤳㡥㔲㌶ち戱ㄶ收挶换㈲愶慢㤱戳愲攷挷㡥愹㌳㑦㐱㐷㥤㔲㐳㈹㐴㠳㜲挸㐳昲㙥挹㠴㈴㡤㈸挳昶㕡敤攲㍡ㅦ㜹捡晥搴搳敡〱晣晦㝡㙦昶ㅤ㘸㔲㈶挳摤搴ㄴ㔵搵㌷〸〸㠸ㄶ㜱㥦搸㠴㍣㈶扣㐹㐰㐲㕣ㄲ攷捤㘰㜸㐵㐱ㄸ摥戴㈹㥥散㐰攰愷㔰㤰挴㈳㐶㠹㕦㘴愴㉦搲㤳挳㈰㑦改㘶㔰攴㍡㐹㌹搳㌳愱㡤㐵㐴〹㜶㠸㘲㡡㔸㉤挷㕦挹〷戶㈵㘴㜶㥤昱㄰㔰㐰搸㈳ㄷ〸㡣㐱㔹〸㝦㘳晥㥢换㡢㤵〳〱㔰㈶愳㠶愶㑢㐰㈴搴扤㝡ㄸ捣㜳摡捣㔰户㕡㈲㈰挰敡㜰敥㤷愳ちㅡㄲ㈴㈷㑥㤰〳挲ち〹捦ㄸ㄰摢㝡戰㘷㤱愹㐰ㄵ〴ち㙢㘰㜵㌸㑣㙣㜳㍤捡㈱愶攲㡦㤶晤戵㠸搲㐷㡥挷ㅥ㠴㝣ㄹ㐶愰ㄵ搲ㅦ㈹㠴㜹攴㝡ㅣ扡ㄷㅤ㘲つ㡡㕣㈱㜰晣㥡搹昲㕣摦㌵㠲㕣㥤㕣㘱づて㙣㈳㤱㈸㔴愵㍦㄰挶愱㝢攲㘲㈹〷㌹慢ㅤ〴㥣㤹㉤挷扤攷昰搳㐸㍥昲っ㥣㕥改㌴戶挱挳㠸㤷㜳㐴挵㉣㌴㠸㍦㔲收愸㌲㤶捣㐲〴㜹㘶昴㉤慡㕣愸㉤搴㙥㌶㉡㜳㤵愶㌶摢㉡ㄶ㥡慣㔹慡㔰㤶戲㕣㙡㑤㌷㘷㘷㕡㘵㌶搷㥣㘵㑣扥戴㍦㤵ㄵ换㠵㡡㍥愷捦㌶愷㉢愵㤶㔱㙥㙡㌳㤵改㘲愹㐵戳㘶㉥㤶愶つ昹敤晤愹ㄷ换ㄵ㥤㌵愷昵㡢扡挶㑡慣㔵㥡㉤ㄴ攷ちㄵ㐳㙢捥㤶㡣㜲㘱慥㤸㠵ㅥ攰㈴敡㍣挰㌷〰摥㈱㤰㠵づ昰晥换攸慡〲㉣㄰挸扥㐹㠰昷㘳㔶㙦㤱〴戱㍡慡挸㠲ㄲ㐲㔳㘸〹扡挰㔲改戴㜰㈱昶昶㍥㈰敡晢㡦ㄷ㔹㠶愴㑢㥦㄰㠳㡥戶㘸㤰晦㔸捣摦㥥㉢㔴㔱慦㄰挸㘴㈱昱㥣ㄵ慢㔴㜹慥戶搰ㄸ捣㔵捡敦㔲昷㈸㜵㜳㙤扥㐹㌹ぢ昹㉡昵㡣㔳㑦㥦㙢捦㐲㘵㌸㔹搶愸挲㔳㜷㍣㠹㤷㠵昲㜰挶慦㔳㘵㉣㈹㠱晦㤷㘲搷ㅤㅥ㉤㑣挶戳㌴㑢㤴㜵搹挳改㤳㘴㈶㐳攳㤲ㄲ摦㝡㌲㕣㈰㈸㉣㈲晦晢ㄵ㔱昳㑢攰ㄹ㈴㌱㌰扥㐲㝦敡㝢㐰て愱㉡っ㍢攲㘱㔹㕡㜰改㠴扤敡ㄳ戱㈹摢扦攱㔶昷㔳挵捦㜵㤹㌰搹㑤ㅥ㕣攸昵㔴㥢㍥挵愶〱敢㉥㕢昷昶搷搱㘳㥣搴㤵〶㈶㤱㙡㌸搱㙢昵ㄹ攷㔳扤㕥捡户㔲㕡㡣改㕤㡣㍥㌹捥㤴㤸ㄴ㠶挶㑢㔱㔲ㄸ搶ㄸ搸㈸㌱戶慡挳〵㥥ㅡ攲㥡ㄶ捣㠰㠷㜶㕣〱㔴攸扥㕣〷㤸㍦扦㝣扥㔸㤶㝥㐱㡣㌸昲ㅥ㠳㘴挷㡥㤰扦㡣㝡㡢愰〰㍤〶敤〵ㄵ㔶㐳扥〳㠰㑤愶ぢ挲捦㘸ㄳ㙣〴㐹捡愸摦挲㈴愸㜲㌸ㅢ㠶㐳晥㌶〰㥦㍤㉤晣㌴㥡㡤ㄳ㘷搴昷〹ち㤷〹〰〱扦〴っ〳ㅡ搸㕢㠰㠱攸愲㥥㠰㡡㠱㤳昸敢㉢㥦㘲㌳㤴换ㅣ㈶㤴攸㥢㡤扥挷㉦㑦㐰㉦昹捡昷㠵㌳ㅦ㔵愵扦摥㝦昰㥦㥦㕦扡昰攳㕦㍥㡣扥昷戱昲昳捦㑥㘳㙦晡㑥攱晢攱慦㍦㈹㔷〵㈸ㅦㅥ昰敡ㄹ㠰戳〰攷〸〸て攸㠴㐳㥦扦ㅦ㐷〳〷㥥扦㔰搷挷㍤㝦晢㌲挵戰昸㤲〱ㄷ㌷㘲㠴摤搰㌰㜲㜲愶㘵㜱晦㌰㑡㤱慡㐷戹摡㌵㝡㤴㔱㝣㑡扦㌷㐴㘶㠶ㅥ㙢㜰晣摤㔸㐸攵㉤㉣㤶㡤㜵㡦㠲愳戴戱敡搳㘳㕡㔷㈸搷ㄴ〴昴ㅢ挵戳㄰挶㤲挷㑥㐱㝥㐸收㤰摦ㄵ㠷㍡㑢搰㘴愸㌴㠷敦摢ㅥ㍤扡㈹㔸ㄱ〱敥㤳扤慢攵ㄶ㙤搶晦㙣搳晢㥥㙤㈹攱㐷挴㘶㌸昵㑣攲挳挴㐳ㅣㅢ㙥㐰㘵昴㤱つ〲挸愳昰㔸㠷㐰㐶摤愴㥥㌰㑣挶戳㈷㈱挱㤰挵㉦㠸㄰㘶ㄹㄴ㠸㈵㔳㐷㐶㜰敢㙥㐹㐱ㄷて戳〳搰㥡戴摤搰昰㘳愹㘲㌷㉣收㙣〶敤晤ㅦ㐸㐹愷㈹㌳慢㥡㌴〹㕢攱㑦㠰扥〲慢㝡㌷敡攱扤搰㑢摥扢搵搷㉢攱㝥㐷㘶㠰㐰㤳㡦㤱愸㐶扦攰攲挱㌴㘹攱昷摢㘱昱昷攰晢搴愲愵〲愸〶ㅣ慡ㅤ㔵搰㤸挰搹㔱㔱㜰搳〹㥣戹搷挲㔹昷㕢〲㐷㐲㍤㙡昸捡愶ㅡ㤵㉣㤰挱捥愸㉥〱㡡㥢扡㠳〲摡昰愵挲て㠸慤㜰㘰ぢ搴㔰㠴挴挸晦〰㜲㕢晡搸 | I27: 㜸〱捤㔹挹㙦ㅢ搷ㄹ攷っ㌹㐳づ戵㌱戱㥤㍤つ㥤搸捤㈲㠵ㄱ㜷㌲愹ㅡ㔳㤴愵㈸㤶㉤挵㤴敤㜴〹㠸攱捣ㅢ㜱愲㔹搴㤹愱㤶㕥㔲愰㠷㕥㠳收㤰㑢㕢㕦㝡㈸㡡〲つ㝡捣㌵㤷愲㝦㐱㠱昴搰㐳搱㔳㠰戸㍤收攲㝥扦㌷㐳㠹愴㘸㔹㜱㕣挰㑦攲挷户㝥敦扤㙦晦ㅥ㘳㐲㉣ㄶ扢㑢〵摦㈸〹㔴㥥㙢ㅤ昸〱戳㜳㑤搷戲㤸ㄶ㤸慥攳攷ㅡ㥥愷ㅥ慣㤹㝥㄰愷〹㜲摢愴㜱㕦㙡晢收捦㔹慡扤换㍣㥦㈶㐹戱㔸㉡愵㠸㌴づ㈴昸㘴晡つ〵慢㈶ㄳ〴㌶㥢㡢敢㥤て〹㙢㉢㜰㍤㌶㤷扤ㄹ慥㕤挸攷㜳昹㕣愱㔸捦攷收攷戲捤㥥ㄵ昴㍣戶攰戰㕥攰愹搶㕣㜶愳搷戱㑣敤ち㍢搸㜴户㤹戳挰㍡昳挵㡥㕡慡攵㑢攵戲㔱慦搷㈶㘹敢搸戵收攲㠶挷っ晦㘱攱㤴㠱㜳扤戹㤸扢挶㠲㠷㠵㌳㐹㌸〹攵㤲㙢慢愶昳㤰㤰㑡愰㙤㜹㠹㘹㈶㤸挰㤸㘷㍡㕢㌹㍡昶㄰愱愹㔵捤㌵㝣扦㘷敦㠰㥦㑤㘶㔹搷㤹㤱愲㤵㡡扤攴〷ㅢ慡㘷晢㤳㌶攸挷㍣收㘸捣㥦戶㉦敦㙢捣㡡㈶晡㈹晢愶敡㕤㔳㙤㤶㐰㘵挶づ㜹戸慡㌳㈷㌰㠳㠳㈹晢㠶捦慥慢捥ㄶ挳ㄴ挹㕥改㤹扡㤰㐸搰㝦㉣晥昲戸㤳㜱㐶搱㜹散㘶㔷昵〲摥〲ぢ昳攳收づ㠸ぢ扦挵搰戹㈰㔲搹㤱㔵攰㔹换戴慦㌰捦㘱ㄶ㌶〱㈷㘷㐷㈶㜱〲㠵㝣㌸愴㔴晦㍡攰㤲㌰ㄱ㈹〱敥㠲㕤㘴㄰敢挶愶㘷搲㌵㝢㤶敡捤㕤㌵㥤㠵㐲慤㔸㉣ㄴ㜳㠵㝣扥㔶㉦ㄴ换昵㕡㝤㙥捤摣㘶㤶挹晣㘰愱㕣愹㔴㑡㤵㕣愹㔰慣搶㑡搵㝣扤㕡㥢扢慡敥㉦搴㑡昵㝡愵㥥慢ㄴ换㤵㙡㜵扥㕡慦㔴ㄵ㠵㔰㉢㘹㙣㌲㐱㘰㠶㡥敡摡戶改㠳㥦挴㑣㘵ㄲ挳㔳〴㠴挴㝦㐹㔷〷㑦㠶昹㘲㕢ㄵ摢ㅤ戱慤㠹㙤㕤㙣㌳戱㙤㠸敤㉤戱摤ㄵ摢愶搸晥㔰㙣㙦搳㥣㝥㐹㈵㤳㘲㔴㥡㍦扥晤挵愷扦晡攲摡㘷㕦㝥昰换㝦昹收㑦㈷㘷㘸搲㝢搱慤㤷㍣㜵㡦戶㍥ㄲ搱㐲㙥ㅥ㝦昷搷㑤㔲㑤愳㙣㔴㡤㝣㕥㉦捦慢㐵㔵挲攵㑥㉢〴ㄹ㥡㍢㘹摣㌲ㅤ摤摤攳㔲昱摣愲敡戳㈳㈱㤹㡤挶ㄶ摤㥥愳晢捦㡥ㅦ㙣〵㙡挰㥥ㄹㅤ㍢㐲㜲㙣㔹㡢㜴㠶昹㝣扦敦㡤㉥扢愹㕡㍤搶搸㌷挳攱攷㐷㠶㐹㘳摣捥扤㐷㤷㍤昶戳挳搱㘳㈷㙡㤰㘹摤攵戸㡦摤㌲ㅣち捦㤵㙤㜶㕤㥦㌹晣㜸戳昶㠶愹㙤㌳慦挵㘰㤸㤹捥慦㝡づ㐳㤱摡捥慥㍢㜴㔱㔲㐴晤挵挱㕥攳昲㝥挰ㅣ㥤改㜴摥ㅤ收〵〷㥢㙡挷㘲㑦っ㑤〹昷愴㠱愷㠷扡㤷㕤慤攷㌷㕤㈷昰㕣㙢㜸愴愱敦慡㘴㉡昴慢慥捥㐸搳ㄳ㈸㘴昶攳㜱㐱㠸扤㌶㑥摤㠰搷捦㜱㐶っ戰ㄸ㡡晦搴戰搸攵慥搳敤攸ㄶㄶ㠳㑣㡡ㄷ敥㠳㡣攳〵㥡㔷敦㍤㜱攰㑥昰㘲㤸晤捡扤㘷昳㌳ㅥ㜲敥晦㍢㔹ㄴ捦㐴户扦扣㑢收昴ㅤ搵搱㉤收㥤攸㠳〵㥣㐸㠱戲㐸㕦㤳㐱戸㈷昵㘰户㠴㝤攱㐰摡㌳昵愰㉢㜷㤹戹搵つ愸㡦晣㜴㉡〵搲ㅥ㉢捡攳搴愵㥣〱㌸㑢㈰㥤㡥挹攷㌰㐹㑥㉢㑦㠴㙤〹㜶敡摢ㅢ㙡㐴〲ち㜷っ攴挵㝤挹㕥㜶㍤㍦ㅥㅦ㜷换㜷㔴扦ㅢ㐰㍣㑦ㅣ挴搵㤴㈷〱㥥㈲㈰挱㐴摥搷て攰挶〹戸扢㈹㝢㠹ㄹ㉡〵ㄹ㕣扢〵㔵戲㐳扦戵挴㝣㑤㠱㠳㕢㈵㕤搹㤷愹㐶捡㍦㘹㐳晡搹㝥戰愴〶㙡搲㈶㔷㐹㕣㔲㘸搲㉣㕦ㄵ搶戰㜲㡡昷昵㔷愷愳ㄶ㘱挸昰敡〰㤶〹摥ㄱ㘲㈲挵㈱㝤㠹挵㈳㜸昲㈵攸散㜰㘶昲愸愰て扢㍣昲挴晡ち㜳㌶て㜶㤸㡦改㈹昹㐴㔲㡥慡ㄷ㤰慤㙢㥤ㅢ㠱㘹昹㌹㍡改㡡攷昶㜶ㅥ㈶ㅥ攰㔲㥥㈶搰㉦搲扦㐹㡡㑦㝦㈷㠴㤶挹㕤昰愶摤愶换㔱ぢ㍤ち㝣愱〲㘹㈵㘴㜷改㡢ㄷ攵㜹晡㑡㥦㌴㈶挱戳㝥㥢昰〰捡㌷㘹ㄳ㠵㌶㍤挶〳㥥ㄴ㙦㄰戵愷散㕢慥户摤㜱摤㙤挸搳㌴㙦昹㕤挶〲〴ㄱㄳ㔱搰挴㠳㈳㐱㠸挷㠷晣昸㐰戴㠱昰㐳㍥㑦㘰慡㘱㔹搹㍥㐶㕦㝥㤱扡攲〸㘷㕥愲捡ぢ捤昵换㔹㔸㕥㉢扢搱㈵ㅦ㤹㥤捦扥㥥捤捦攷㑢ㄴ㐸敦㕢扥㉤晣㠳㠸㠰㘸攱捡㌷挹㍢㥦㍣昳挹昲攷㠵㍢㑢㝦昹晡捣㠶昰㘵㌴㌰敡晦㈵搸㤳㙦㘱户㌹戹㡤㥢㈶摢㠳愰㑤ㅢㄴ〲㌶㝢㝥攰㜲慤㤸㌲㤶摣㙢㙥戰㘴晡㍢㤶㝡㜰挶㠸㉡户扡捣㈱㥦攵㤱敢ㅡ改㜳㜷㜶㤸慥ㄸ㉤户攷㘹㙣㜵改㔱昰㘹㐴づ㤲㉣敥捥㐴㠱捡㠳㤹改ㄸ慤㈴㍢㑡㈵㈶挱戸㡥㙡ㅢて㐴〷㍣㈳慦㠲ㄵ㌳㐷ㄴ摤㌴〳㡢㑤ㄸ摣㉢昱㝡捡㈰㉡㔲㈰愰㈷㡤捤㉥㐹攱搲㤴戱攲㤹扡㘵㍡っ捣㌸ㅢ㑥㕤㘳㕢攴昴㌷㕣摦㐴捣㍦㘵㙣㝡慡攳敦挰㝥㘹〷㡦て戵戸愱㤳㡣㐵搳昱㘹ㅢ捥㐵搴㘷㡣㔶搷摤愳㌴戰㘷㍢㉢敡㡥晦㐸㜰〵扡ㅥㄶ捥ㅡ㐱ㄴ㐴㔱㐸㠹愹〷攵㡦晣㝤挲昶攴㔱㘰㥦㈵㔹つ㍣戳搳〳搱昸㐶〵㠲〹〰捥挷㤸〴昷㌸㙡慤〶搸㌸ㄲ㙡攰扣㐳愹搵㔸慦㜷㤸㕦㜳搷晥㌲搶扣㐲攰摤㤵ㅢ慢㐷㐱昸㜷㑡㤲㈵㌸昴㔳挷㍣戰愳搳愱ㄸ㈱づ㠲㔴㤱㜶㤲㌴愰㌵㉡㥡㘹㠳捦㠱㤴㑥ㅦ㔵㤷挹㙤㑥ㅡ㙢㙡㠷㔹攴敤㙤㌵㤸づㅢ〸扢㙣搵昲愳戱㈶攵㍡㉡挴づ愹㘰㑢㔳㉤㤶㌲ㅡ扤挰愵晣㑡㌱〸㜰搹㡣扡搴㝤敡㔲昷㐳扦㙣㕣㐷ㄶ挰敢挰攵㙥愹㥥ㄹ㜴㙤㔳㑢愱㠱㐸晤㤱㤰㔷愴㙤㐴捣㝥改摢㤳㔱㐷ㅦ扡㕢㘲㜷㡥㘲㘳㤰づ散㈷愹ㄶ〵㤹晥㠴〷っㄲ挹晡㜰㤷愸扣㐶搸㈴晥ㅣ㠳㘸〳攵㑥晦搱攷捥㐷搴挳つ㤴㠰ㄸて挳捡㙣㔴㐱㈳㠱㌰敢挴〸〲ㅥ㉢扤收慡晡戲慡搱戳㑥㌲㝡搴㐹ㄱ㙢㘱㙥扣っ㘲扡㈶㌹㉢㑡㍦㜶㑤㥤㜹㈹㜴戴攸昱㈸㠱㘸㔰づ㜹㐸摥㉤ㅥ㤳愴㠹搴戸扤㔶晢戸㉥㐴㥥㜲昰㜱㙡昵ㄸ晥慦摥慢扤つ㑤㑡愷戹㥢㥡愳慡昲㍡〱〱搱㈲敥㌳㌲㈱㠷〹㙦㄰㤰㄰㤷㡣昲㘶㌸扣愲㈰っ㌹㙤㠲㍦㠷㈰昰㑢㔱㤰挴㈳㐶㠹㕦㘴㘲㈰搲㤳挳㈰㉦搵㝦㘳㤱㕢㈴攵㑣㑦㠷㌶ㄶㄱ㈵搸㈱㡡〹㘲戵㍣㥡㈵ㅦ摢㤶㤰搹㉤挶㐳㐰〱㘱㡦㍣㑦㘰ち捡㐲昸摢ぢ敦㉦㉦㔵㡦〵㐰改戴ㄲ㥡㉥〱㤱㔰晦敡㘱㌰捦㘹㔳愴㙥愵㐴㐰㠰搵攱摣㉦㐷ㄵ㌴㈴㐸捥㈸㐱㡥〹㉢㈴㍣㙤㐰㙣㕢挱㠱㐵愶〲㔵㄰㈸慣㠱搵攱㌰戱捤昵攸㤵㌱㌱㥡戴ㅣ慥㐵㤴㍥㜱㜶㈴㈱攴换㌰〲慤㤰晥㐶㈱捣㍤搷攳搰㐷搱㈱搶愰挸㔵〲㘷慦㥡㥡攷晡慥ㄱ㘴㕢攴ち戳㐸戰㡤㔸㙣扥㈱晤㤵㌰㡥摤ㄳㄷ㑢㌸㜸搵摡㐵挰㤹摥㜶摣㍤㠷㥦㐶昲昱捥挰改㤵㑣㘲ㅢ㈴㐶扣扣㐴㔴捣㐰㠳㜸㤲㔲愷捡㔴㍣〳ㄱ攴㙦愷㙦㔲攵㘲㜳戱㜹扤㕤慦ㅡㅡ㠵㙣慣㥥㘷㕡愹㔲搵搵〲慢ㄶ㡤㝣㐵㌳㔸戵㔴㉥捥换㙦ㅤ㑥㉤㔴㑡㥤㑥愵㐴敦㑤昵㝡愹㕥㔱㙢㐶愱㔶㘲〵慤愴搷昳挵㥡㔱㤱㝦㜰㌸戵挶㔸愷慣ㄱ〲㕤㔵㑢ㅡ㔳㔵戵㔳捥㔷㔸戹愰戱㐲㐷慢敢ㄹ攸〱㑥愲㉣〰晣㄰攰㙤〲ㄹ攸〰敦扦㠴慥〶挰㈲㠱捣ㅢ〴㜸晦攱㔴扥㔲㠲㔸㥤㔶㘴㐱〹愱㈳㘸㠲㉥戰㐴㌲㈹㕣ㅣ挹扤㡦㠹晡㘱昲㈲换㤰㜴改㜳㘲搰改ㄶつ昳ㅦ㡢㜹敥戹㐲ㄵ攵ㅤ〲改っ㈴㥥戳㘲㤵㉡㡦㌵ㄷ摢挳慦㤹昲扢搴㍤㐹摤㕣㥢改㤹搴㤷慦㔰捦㌴昵っ戸昶っ㔴㠶㤳㘵㡤㉡晣昵㡥扦攳㘵愰㍣㥣昱敢㔴㤹㡡㑢攰晦㕢㈳搷ㅤㅦ㉤捣㡥扥搲㕣愶㔷㤷〳㥣㍥㑥㘶㌲㌴㉥〹昱捤〷挳〵㠲挲㈲昲捦㘷㐴捤敦㠰㘷㤸挴挰昸〲㝤㤴昷㠰ㅥ㐲㌵㍦敥㠸㈷扤攳㠲㑢攷散㔵㥦㠸㑤扦〷㙣扡㡤挳挷攴挷晡㑣㤸敤㍦ㅥ㕣㍣敡㘹㜴㝣㡡㑤〳搶㕦戶敥ㅤ慥愳㘴㥣搴㤵〶㘶昱搴㜰敥愸㌵㘰㥣㥦㍤敡㕤㜵㝣㝡ㄶ㘳㝡ㅦ愳㑦㡥㌳㈱挶㠵戱昱㔲昴㙣っ㙢っ㙣昴㌰戶慡挳〵㍥㍢挶㌵㉤㥡〱て敤戸〲㈸搰㝤戹〵戰㜰㘱昹㐲㘱㕥晡ㄳ㌱攲搴㝢っ㤳ㅤ㍢㐲㌶搲捡つ㠲〲㤴ㄳ戴ㄷㄴ㔸つ昹ㄶ〰摦愴㈰晣㠱㌶挱㐶㌸㐳㕡昹ㄱ㈶㐱攱挳搹㌰ㅣ昲㑦〰㌰㍢㕦ㄶ㝥ㅦ捤㠶㙣愷㤵て〸ち㤷〸昴ㄱ〸㌰っ㘸㘰㕣㠰㠱㐰〳〷㤹㠱㡡㠱㤳昸っ㤴㍢搸っ攵ㄲ㠷戱㔴昴㥤㠹扥捦㕥㥡㠱㕥昲㤵ㅦ〸攷㝦摤㤰晥昹搱敤晦晣昱慤㡢扦晤昳摤攸晢愳㡦搷扦昹晢㔷敦㍥搶〸扦捦㌷摥摦摢扢慣摤㜹戵㈱㐰昹㤰挰㉢攷〱㕥〴㜸㠹㠰㜰㥢づ㌵㌶晤晤㕤㌴㜰㉣晤㠵扡摥㉦晤ㅤ㜸㈹㠶挵㤷っ戸戸〹㈳散㠶㠶㤱㤳㌳㉤㡢晢㠷㐹㡡㔴㍤㝡慢㕤愳愴㡣攲㔳晡㐵㈲㌲㌳㤴慣挱昱昷㘳㈱㠵户戰㔸㌶搶㍤ち㡥㤲挶慡㑦挹戴㥥愲户愶㈰愰㕦㌱ㅥ㠵㌰㤶㍣㜶〲㑣㈶㕢㠴昷㕤㜱慣戳〴㑤挶㑡㜳㤸摦ㅥ搱愳晦〴㉢㈲挰㝤戰扣㕡搶㘸戳挱戴㑤ㅦ㐸摢ㄲ挲㙦㠸捤㜰敡改搸㉦㘲㜷㜱㙣㈸㡢挲攸㑢㌶〸攰ㅤ㠵挷㍡〴搲捡ㄶ昵㠴㘱㌲搲㥥㤸〴㐳㌶㝡㐱㠴㌰换愰挰挸㘳敡挴〴㙥摤㉦〹攸攲㐹㜶〰㕡㤳戴摢㉡㝥㑥㑤搹㙤㡢㌹㕢㐱昷昰㈷㔴搲㘹㝡㤹㔵㑣㥡㠴慤昰ㄱ愰慦挰慡㝣ㄸ昵昰㕥攸㈵敦摤ㅥ攸㤵㜰扦㔳㌳〰收攴っ㠹㙡昴ㅢ㉦ㄲ愶㔹ぢ扦昰㡥㡢扦㠷昳㔳㡢㤶ち愰ㅡ㜰㈸㜶㔴㐱㘳〶㘷㐷㈵㠵㥢捥攰捣㐷㉤㥣昵戰㈵㜰㈴搴愳㠴㔹㌶搵愸㘴㠰㡣扢㑦㤷㉡ㄴ㌷昵〷〵戴攱㑢㠵㡦㠹慤㜰㘰㡢搴㐸〹戱㠹晦〱㌰愰〸㔶 | N27: 㜸〱㤵㔴㕢㙣っ㔱ㄸ㥥㤹摤㙤㘷㜶愹昱㈰㔲㡡㐵摤㥢㡤㙤㐹摢㐸㕤㍡搵慡扡㤴㔶㐹㤰㌱扢㝢戶ㅤ㥤搹㤱㤹搹㐶㠹〸㈲ㄲ㈱㜱㝤愰㑦ㄲㄲ愱㤱戸㈵〸㡦㐲㜸攰㠹〷㍣㠸ㄷ昷晢愵ㅥ㠴晦㕢搳㔸扡㉢㝣搹晤攷㥣晦晦捥晦㝦晦㤹㌳㠷攳㌹㡥晢㑥挰ㄳ昰㘳㔰搲搲敤戸捣㡣㈸㤶㘱戰戸慢㕢㈹㈷㌲捦戶戵敥㐵扡攳晡㠸㔰愰敡ㄴ㜷〲慡愳㙦㘲愲摡挵㙣㠷㐸〱㡥ㄳ㐵㐹愰㌸㌸昸换晤ㄳ〹㌳挹て㐳㉣㙥㔰〱㤹㔶愵㜶㘹㙣㍤攵㙦㜱㉤㥢㤵㠵摢㝥㘶愹㠹㐶㈳搱㐸㜹㐵㜵㌴㌲扤㉣慣愴つ㌷㙤戳㥡ㄴ㑢扢戶㘶㤴㠵㥢搳㌱㐳㡦㌷戱敥㔶慢㤳愵㙡㔸㙣㝡㐵㑣㥢㔱ㄵ㥤㌱㜳㘶戲扡扡㉡㠰㐲攵㜵㉣慥㐳ㄱ㘳戶㥥㙡㡦㈸戵昴换慡㐵戳㑡㙡捥戶㤹愱愱扢攵㉣㈹搱戲㘲㜳㥥攳愴捤つ㜰㐵㔷㕡㜶愷搳挱㤸摢㤰搶ㄳ㜲㜶〴㡥㙣㙡㜹㕥㙡㌹愸㠳㑣挵㘲挹愴ㅥ搷㔹捡ㅤ收㑤㐸ㅦ捤愸㉥昵摣㙡ㄵ㤹昳㌷挶㤹愱㌰挳㈰㤷㌳搸㕣攱戰攵㕡慡㥤㉤搱㑣ㄶ㌰㤱挵㐷攰〴㍦攷ぢ㜹敦〶捥㝦ㄹㄷ㐴晦㘵㌳㝥慢㡦㤷挳㘷攷㠶挳晦㤵㑥㐹戶㌳㐴㑥㐱搵〴㌵㈶愸㜱㐱㑤〸㉡ㄳ搴愴愰戶ぢ㙡㠷愰敡㠲扡㕥㔰㍢㠹搳て戱戰㔰昰戰愶㔶慢㥣㔴㜲愲昱㤴戹慢戶㜷摦改㈱㝣ㅦ攵㐶㝥慥㙤摢㥤晡㔰㘹搳㤹㔴㔰㉣㕥摤㌷㠵晦攲〵〶慣昸散〵㡥摤慤㜸㝤散挹攱㠶摥㙤愹て敦慥㥤㕤㜸昴〸昰㙣㑥㔰㠲㍥㡥晦攸昱㡥㙢慢搷㙥摤㈷㌶ㅤ摡昳昸挹攰㠳摦昶昳㌸㡢㌸㉢晣㠷㝣㈵摥㝢㠱摥㉢㐵晡散敢敦敢昶っ㑦㜴㔹㍢ㄳ㝥晥㕤扥ㄵ㙦扤挰搶愶㑤て攲搲摥〵ㄷ慥㕥扡㔰㔴㜱愸昲㤷愸愱ㄹ㔱慦㍤摥挴〳㡦㝡㙥㑦㙢㙣㌸㜹慦㙥搶收摤摢摦昰昸㌶㌲愲㕥攵㉢昱搲ぢっ㄰昵㈲摦㡡攷㕥㈰㜸㙥搵ㄶ昳搶挸挵ㄷ昵㑦㍤㕤㙤㍢㠵㕦愲㠶㘷㐴㍤昵㜸捤㍢ㅥ㥥扦愹㝣㥥扢晤昲挲ㅢ㝤昷㝤敢〲搸挸晦㍦㐴昸昲愵捣搱愵㙦搵〹㤸昵㤶敤昸㝣戹㙥㤶〵㥡搳攱㙡㌱㠳晤㌵㠸㌳㈸ㄵ挳㡣㈰挳㘳㈳㈱㑣ㅡ〹㔳〲ㄷ摡挸戸㐶挱㌵㥡㡣ㅦ晣扦㘶㉤㈴㐲㜰㤱愵㈵敡戵㌸摤㐲㠵摥ㅤ㈴㉡㤶戹㐱戳㤹㉤㐳㥣㘲㈵㔸戳㙤㜵改〹㘶㡢㜰戴搰慤攷㐷㕢〵㙤㥡㤱㘶づ扤㌴ㅦㄷ〸㠴挴㕣戵ㅡ晢㜳㤵收戸㔵ㅢ〷攴㝦戹慣㙡づ㠹攲㠲挱㑣㉦㘳㘸㈸㠵挹昰㘸ㅢ晤晣㐱ㄸ㑢㉥㘹ㅣ〸搸㠹ㅣ㠴昱㈰㤴㠲㠰㕤捡㐱㤸〰挲㐴㄰戰㜱㌹〸㤳㐰㤸っ〲㌶㌵〷㘱ち〸㔳挹挸㤰ぢ挸攱捣㠳〶搰〷挸搰〸挸㄰〴挸㄰〵挸㔰〰挸㔰〱挸㈸〹挸㈸ぢ挸愸〱挸愸〳㠴㝥〰㡦攳ㅣ㈷
A28: Decisioneering:7.0.0.0 | B28: Decisioneering:7.0.0.0 | E28: Decisioneering:7.0.0.0 | F28: Decisioneering:7.0.0.0 | G28: Decisioneering:7.0.0.0 | H28: Decisioneering:7.0.0.0 | I28: Decisioneering:7.0.0.0 | N28: Decisioneering:7.0.0.0
A29: CB_Block_7.0.0.0:2 | B29: CB_Block_0 | E29: CB_Block_0 | F29: CB_Block_0 | G29: CB_Block_0 | H29: CB_Block_0 | I29: CB_Block_0 | N29: CB_Block_0
A30: 㜸〱㤵㤹〹㜸㑤㘷ㅡ挷敦戹㔹㙦㙣㥦㙡昴搱㘱ㅥ愳ㅥ挵㘸㐶㘲㐹戴㤶㑡㈲㘲ぢㄳ㡡㐷㡤晢摣㈴㈷㕣㙥㜲捤扤〹戵捣㔸㕡ㄳ㐶戵㠴㔸㐳㘲ㅦ戱ㄳ㙡慢戵愶搲㔸㙢㈷愶戴㐵㜵㙡愸捥㈸愵㍡攷昷昹昲㌰捥戹㝤㍡晦㠷㉦㈷敦晢㜳捥㍦摦㝤摦昷㥣ㄳ㌶捤㘶戳晤㘴㠸慦㈸㤸㠳扡扤㐷昹㜳昴慣愸〴慦挷愳愷攷戸扤搹晥愸㡥㍥㥦㙢㔴㜷户㍦㈷挸〰㐲㥤㙥㈳敦て㜱晡摤愳昵㜰攷〸摤攷㌷愰㄰㥢㉤㍣摣㘱㌷昲捦慢扦愲昲ㅢ〷晦捡ㄱ捣㘲㔰㌶㐷㈸㑢ㄸ㑢㌸㡢㠳㈵㠲愵ち㑢㔵㤶㙡㉣搵㔹㙡戰〸㤶㥡㉣捦戱搴㘲攱㌲㡥㐸㤶摡挶㔲昵〵㘳改㤳㄰摦㌳㙤愸㘱扡㜷㡥搷愷㌷慢摦昷戱戵㜶搱搱㔱搱㔱㌱㉤摡㐴㐷㌵㙦㔶㍦㈱搷㤳㤳敢搳摢㘵敢戹㌹㍥㤷愷㔹晤㕥戹㘹ㅥ㜷㝡㌷㝤㔴ㅦ敦㌰㍤扢㥤㥥搶扣㐵㥡慢㘵㕣㜴换㔶慤㌲摢戴㠹ぢ挱㝤㑣愲㥥敥收挷搴㜵㥦㍢㝢㜰㔴㐲扣昱攷愹㙢ㄹ摦挵ㅡ㍢收昳改ㅥㄷ㕢㤶慡㘷昲㘳搵挹敡攸昷攷㘶つ㈷ㄴ摤捦敢ㅢ收ㅦ愲敢㌹㥤㜳摤ㄹ攲改っ㠱愷搱㤸㠰㘸っ㘸搵慣〴慦㥥㤹改㑥㜷敢搹㌹㤱敡ㅢ挳㥦昱㥤㜱㕤攳㘷敥攳慤㥥搵改慤㜴摤㤳愰㝢㍣㐶挸㕦㉤敢つ扦㥥敡捡ㅥ慣愷戸戲昴㤰㉣捥ㄲ㘴挸㘶て戶〵㔵㔱ㅦ㌸挱㕦㜲ㅣㅡ晤㑢㌶攳㝦慥捦㠷愳㍤㝤㙥〲挱㕦ㄹ愵昷㜴㤰㡦摦敥㜴搹㥤㘹㜶㘷扡摤㤹㘱㜷敡㜶㘷愶摤㌹搸敥ㅣ㘲㜷扡敤捥愱㜶攷㌰㠳愹㔴㜸㔸㤸㕤㘹㘰扣㉢昶攵扡换扢㤴㘴攵挵慦㤹扥扡㠶㜶摤㌸㌷攷户昵㥤㜰㉣愹㑡挳㙥敢戲㈳挲敢扣㜹慦㠹㜶㑤㈵戲㡦て㜴㡥扥㔰搰㙤捤攲晡攷㌶㤶㌷敤愰㕤㔵㠹敡㡤㍢㑤摣㜴敤㑥㡦摤㈵つ敥搷㝡㌵㜲收晣㜹攸㐶㠷〸㐷㕤㉥慣㝤愱戸扥㜹㘹搳ㅡ户昶挵ㄷ愷㉥ㅢ户㜵㙤晢㥡ㅡ〵㑥慤㘸㥦㉢挲㘴敡㡡㑡㤸㑣㕤㔶㠹㐱晤ㅡ摦㑦㙥搹㌵㜱搵摤㝤慦㌴攸搰戶㡤昶㤹㑡㙣㝦戱㜰㙥㔹敡戰㠴昱㈷ㄷ晡敢㘴昵摤晥挴㔴〳㘹敡㔲攵〹敡㤵挵㌶慡㔸搵㜳挲㤵搶㌷㜳ㄷ㝦㝤㕤愳攱愴愹ち㐵㤸㑣㕤㔴㠹㌵㍢慡扢摢ㅦ扣㤳昸敥ぢㄹ㈳扣㤳㌲㠲戵ぢ㤵攷㝣搶搴㜹㤵〸㙣慡戱㌴㜵㔶㜱改㘵㐳㤷晢ぢ换㔳搶摦㡦㍤ㅣ㔷㙤敦㐳㡤〱㈰㑤㥤㔱㠴挹搴㘹㤵㌰㤹㍡愵ㄲ㘳㉢㌲㉦㥥㜹昳㘴捡昴收㠵㈵〷愲捦㉤搳㑥慡㐴晦戶昷づ攵㘵戴㑤㥡㜳㝡摡慦㍡㜵㉤㡤㝣戲㔳㔱搲搴〹挵捤㍥昷摡戴㔳ぢ㝡㈴慤敢㌷㜰攴晡挲㤱敤㌵〶㤲㌴㜵㍣搰㈵㡥〵戸㠴㜶㔴㈵㑣ㅦ摦ㄱ㤵〸扣㔳㉤愵愹㜲挵㐵㌶㍦搵扥改捡愲愴㠲挸挲挴戸㐶㔷昷㙢っ㐸㘹敡ㄳ㐵㤸㜶慡㑣㈵㑣㍢㜵㐸㈵昶攵昷㜹攵挶㑢㘳㤳㡢㙡㕦㡦摤㍦㙤敦㝣敤㘳㤵㌸搸㘹挹扤扣晡㤹㈹㡢慥㥣て㙢㍢晡㔱摣㤳㥤㝡㔵㥡㍡愸㌸㝦搸㤱㜷㡥ㄴ捣攸扡愵㜷㡢つ㤳㥦㑢㍢愲㌱搹愴愹㡦ㄴ㘱㌲㜵㐰㈵㑣㠵扥㕦㈵㑣愶昶愹㐴㘰㔳慦㑢㔳㝢ㄴㄷ户慥摢㍢戵收捦攸㌸扦摡㑢㔷ㅡ㑥敡㌵㔱攳〶㈲㑤敤㔶㠴挹搴㠷㉡㘱㌲戵㑢㈵扡晤㄰㜶㝢收㡢㌳㤳㜶挴摣㑥摣㜴慢㔶㉦㙤愷㑡㈴っ㈸㍡㌰㈷敦㐰捡㠶㡢㝦㜸晢㑢扦㝢攰㤳㥤㑡㤲愶戶㉢㙥晢捤㠲㌱㡦戲愷愶㤴扡挷慣㉦慤ㅢ㜳㔶㘳愲㐹㔳摢ㄴ㘱慡㤰て㉡晦改㌳つ慥㙤㔵〹㤳愹㉤㉡ㄱ搸㔴㜷㘹㙡戳攲㑥攷㡦扣敢敤㍣㉢㘱晣换㌷攳㔷散㤹㝡㐹攳〶㉢㑤㙤㔲㠴㘹愷㌶慡挴戸㙥愳㉦愶㍢愶㈵㤷敥摡㔶㕡扤挵慣㔸㙤㠳㑡㤸扡㙦扤㑡〴敥扥㔴㘹㙡慤攲㙡て㘸㝤昴㡤㥤㜷扡㉦てㅤ㤴摦散晣搱攱ㅡ㌷㝣㘹㙡㡤㈲㑣愶㔶慢㠴挹㔴㠹㑡㤸㙡㙡㤵㑡〴慥愹晥搲搴㑡挵ㅤ㕦攱㠹搹㝤晡㔶捦〵㡢㥡㡣㉥て㉢㍡愱昱〰㈲㑤慤㔰㠴挹搴㜲㤵㌰搵搴㌲㤵㌰敤搴㔲㤵〸扣㔳㠳愴愹挵㡡敢搳摤㜹扦散晢愵㠹㑢搶挶捣㉤ㅥ㄰㕤慥昱㐰㈴㑤ㄵ㉢挲㘴慡㐸㈵㑣㍢戵㐸㈵㑣昷扥㠵㉡ㄱ昸摥㤷㈱㑤㉤㔰㕣愸㍦㍢慡昷㤴晣挴㠹晤㉡㥡晥㌵戹攸戲挶〳㥡㌴㌵㕦ㄱ㈶㔳昳㔴挲㌴愷收慡㠴愹搰攷愸㐴攰㐲ㅦ㉡㑤ㄵ㈸捥㔷㔲㙦㔱㘴㡤㠵挹扢㝥户慥㜵捣㡡捤扦搱㜸㘰㤴愶㘶㈹挲㘴㙡愶㑡㤸㑣攵慢㠴㘹愷㘶愸㐴攰㥤ㅡ㉥㑤扤慦戸㡡㈶ㄵ㤳㈶㉤改㤸戲敥㠴㙦㔶敡戹㥡㌹ㅡて戰搲搴㝢㠱㉥㌱㉤挰㈵戴㜷㔵挲㔴攸㔳㔵㈲㜰愱㡦㤰愶愶㈸捥㍦㘵扣㘷㜶戵㔵㍤挶晦㌸㌷攴户㝤换㈶㙡㍣㔰㑢㔳㤳ㄵ㘱㉡摢㍣㤵㜸戶㙣戵扦愸㠴㘹愷㈶愹㐴攰㥤ㅡ㉢㑤扤慤戸㔵㡤㝦ㅤ晡㝣搰挳ㅥ㈵て攲㍡晣昹慤昷捦㙢㍣攰㑢㔳ㄳㄵ㘱晡昸㈶愸㠴愹搰挷慢㠴㘹摣㡥㔳㠹挰㌷攴㠹搲搴㥦ㄴ㌷攱摣㥣㌲攷搸攸㥥㕢㈳换㈷户㡡て晢㔴攳㠵㐳㥡ㅡ慢〸搳㠷㌱㐶㈵㥥晤㌰戴搱㉡㘱㉡昴㔱㉡ㄱ戸搰㈷㑢㔳㈳ㄵ搷㘸㑣搸挲晥摦收扦㕥扣昲昲㜷慤〶昹㑢㌵㕥㠰愴愹ㄱ㡡㌰敤㔴慥㑡㤸㜶㉡㐷㈵㑣愶晣㉡ㄱ搸搴㝢搲搴ㅦㄵ㈷㑥扦㜶㌵昶昰戸捥㌳捡て㍤㘸ㅢ㔲捦ㄳ挲搳昲晦晦愶挰㍢愳㐳扥㥦ㄸ㉦㘴晥㤰慣㈴慦捦ㅦㄴ㘴昵㑥㥡散昲て挹㜱愵㜹昴㥦㑤昲愲攱㤸捥㌲挳㔸㌴㥥㤶㌱收挸㘷㤹㐹㠸㘷㔵ㄹ㥡㐵愸㠰㄰㑦㡡㌲㌴㥢搰ㅣ㐲㍣愷挹搰㕣㐲昳〸昱㤴㈴㐳昳〹㉤㈰昴㝡㘵愸㤰搰㐲㐲㍣㈱㐸㙡ㄱ愱㈲㐲摣㥦㘵愸㤸搰㘲㐲摣ㅤ㘵㘸〹愱愵㠴戸㌷挹搰㌲㐲换〹㜱㘷㤰愱ㄵ㠴㔶ㄲ㘲㉥换搰摦〸慤㈲挴㔴㤴愱ㄲ㐲慢〹㌱㤳㘴㘸つ愱戵㠴㤸〸㌲戴㡥搰㝡㐲㘳㉢㐳ㅢ〸㙤㈴㐴㌷㐸㙡ㄳ愱捤㠴愸㐵ㄹ㉡㈵戴㠵㄰㤵㈰㐳㕢〹㝤㘰㉣挱㙣昹捦㝥㌰㍣㙥㐷㜴昷扡㌲㤲㕣改挶摢㝡㤸㝡㔷て㑦昰㘶つ㜷昹㜴㥦攰昳㑤昰㘶攸扤㝣摥ㄱ敥っ摤ㄷ㑥愰户昱㉢㠷㘰㉡㈳戴慦换㤳慢晢㡤扡て戲㠵㠴㔴〹户扡㔶㤷捡㜳㌵戴昸㤵㐶ㄷ搳昹扦昹㝤㕣〷挳㤴㉤㈲㠲挷㌶挷㌶㤶敤挶愲㔱㌹晣㍣捦〰㍢〰㜶〲㔰㑣ㄶ挰㉥㠰て〱㈸㌴ぢ㘰㌷挰ㅥ〰㙡捦〲搸ぢ戰て㠰扡戴〰昶〳ㅣ〰愰㔴㉤㠰㡦〰づ〲㔰挶ㄶ挰摦〱㍥〶愰戲㉤㠰㐳〰㘵〰㔴扤〵昰〹㐰㌹〰㡤㘰〱ㅣ〶㌸〲㐰㤳㔸〰㐷〱㡥〱ㄴ㕡〳挷〱㑥〰搰㔳ㄶ㘷昸ㄴ攰㈴〰㙤㘶〱㥣〲㌸つ㐰ぢ㕡〰㘷〰捥〲ㄴ㕢〳攷〰捥〳搰戱ㄶ㘷戸〰㜰ㄱ㠰㈶戶〰㉡〰㉥〱搰攰ㄶ挰㍦〰㍥〳愰攷㉤㠰换〰㔷〰㤸〷ㄶ挰攷〰㕦〰㌰㈲㉣㠰㉦〱慥〲㌰㍥㉣㠰㙢〰搷〱㤸㈸ㄶ挰㔷〰㌷〰㤸㌶ㄶ挰搷〰晦〴㘰〰㔹〰摦〰摣〴㘰㌸㔹〰晦〲戸〵挰扣戲〰㙥〳㝣ぢ挰㉣戳〰敥〰㝣〷挰㜸戳〰晥つ昰ㅦ〰㐶㥦〵㜰ㄷ攰㝢㠰つ搶挰㍤㠰晢〰㑣㑡㡢㌳晣〰昰〰㠰攱㘹〱㍣〴昸ㄱ㘰戳㌵昰〸攰㈷〰㘶慤挵ㄹ㙣㥡〱㘸挶愲㌱㠷㉤〰㍢㐰㄰〰愳搹〲攰㔷扥㡥㄰〰挶戶〵㄰ち㄰㘶㉣㠲㠱㠸〴㐳ㄱ〹㈶㈰ㄲ㑣㐱㈴ㄸ㜹㐸㌰昶㤰㘰挶㈱挱㥣㐳㘲慦晣㘲ㅣ散慢㍣㘰㡡㈱挱㈴㐳㠲戱㠵〴愳ぢ〹收ㄴㄲ捣㉡㈴ㄸ㑣㐸㌰㥣㤰㘰ㄲ㈱挱㌴㐲㠲搱㠳〴攳〷〹㘶つㄲ捣ㅢ㈴㡥㍦晥㙡ㄳっㄸ㈴㤸㈶㐸㌰㔱㤰㘰㝣㈰挱〸㐱㠲㜹㠱〴㌳〳〹〶〴ㄲっ〹㈴㤸〸㐸㌰ㄵ㤰㘰〴㈰挱ㄸ㐰㠲㥥㐷㠲扥㐷攲戲晣㘲ㅣ㕣愹㍣愰慢㤱愰戳㤱愰㡤㤱愰㤵㤱愰㙦㤱愰㜷㤱愰㔱㤱愰㔹㤱愰㌳㤱愰㍢㤱愰ㄵ㤱愰ㅤ㤱愰昷㤰愰晦㤰戸晤昸慢㑤搰㜰㐸搰㕤㐸搰㘱㐸搰㑥㐸搰㔲㐸搰㍦㐸搰㐳㐸搰㌰㐸搰㌴㐸搰㈱㐸搰㈵㐸搰ㄲ㐸搰ㄶ㐸搰〳㐸搰〷㐸㔰昴昲㠰挲㤷〷㔴戹㍣愰搲攵㠱晣㥦っ攳㐸㔰摡㌲㐲ㅤ换〳㙡ㄹ㔵昹㉦挵戳㠰㉥ | B30: 㜸〱敤㕣㕤㙣ㅣ搷㜵摥扢攴㉥㜷㤶愴㐸㡢戲㘵㌹㡥㑤挷㜱晣㐳㤵ㄶ㘵慢戶搲㉡っ㝦㐴㠹〹㈵搲㈲㈵搹戵㔳㝡戸㍢㈳㡥戴㌳㑢捦捣㔲愲攳搶㑡㥡㌴㑤㤳㌴㠱㠱㈲㜶攲挲㜶晡㔴愰㉤搰㠷戸㌶㤲愶㈸摡㈲㐵攱〰㝤㐸㠱ㄶ攸㠳ㅢㄴ敤㐳㡢㔶㐰㕦昲㄰㈰晤扥㜳㘷㜶㘷㤷摣㈱扤戶㕢扡攰搸㝢㜸攷摣㝢㘷敥扤攷昷㥥㜳㐷ㄹ㤵挹㘴㝥㡥㡢㝦㜹㜵戳㜰晢攲㐶㄰㕡敥攸㔴戵㔲戱㑡愱㔳昵㠲搱〹摦㌷㌷收㥣㈰散㐲㠳晣戲㠳晡㈰户ㅣ㌸捦㕡㠵攵㜵换て搰㈸㤷挹ㄴち㐶ㄶ昵㝣〸㝦㠳昱㡤挱㕥㝤摤〰㑢㔳㤳昳㉢㤷昱搴挵戰敡㕢㠷㠷㉦攸扥㈷挶挶㐶挷㐶㡦㍥㜴㝣㙣昴挸攱攱愹㕡㈵慣昹搶〹捦慡㠵扥㔹㌹㍣扣㔰㕢愹㌸愵㑦㕢ㅢ㑢搵㉢㤶㜷挲㕡㌹昲搰㡡昹昰愳㘳てㅦ㍢㘶ㅦ㍦晥㘸ㅦ㕥㥤㌹㍢㌵戹攰㕢㜶昰ㅥ㍤㌳挷㈱㍦㍣㙤㤵ㅣ捥捤戲㝣挷扢㌴㍡㌵㠹晦ㄳ攳挷摤㈳愳㡢慢㤶ㄵ昲搵㤶㙦㜹㈵㉢㌰搰戱搷㥤〸㠲㥡扢挶挵㌳摣ㄹ㑣戵㘴〶㘱捥㥤戲㉡ㄵ挳㡤㥦㕡㜰攷戱㜶ㄵ㜳愳捦㕤戴扣挰〹㥤㜵㈷摣挸扢㑢㜸㔰戹摦㍤ㅦ㔸攷㑣敦㤲㜵搶㜴慤㥣㝢慡收㤴扢昵㤵改扡㌷㝥㐴㜲㘰㌲晤搱㠹挰㥤㕡㌵㝤ㄹ㔱挰㠵㐹㘹㍢攳㤷㥡摢摥摤晥戹ㅣ扡扣㠱捦扣愷㝤㍢搴㕣㌰晤㝡换㤱昶㉤愳挹㌷㡦攰挱昶敤ㄳ㙢搴摣攷晥昶㝤㘴㈹㥢㕢慢摥㠸扦㘵㐵㌱ㄹ㈳㑦搰㐳㔰㈰㈰〱㡤㈲㐱㉦㐱ㅦ㠰敡晥㙦㐸㐹戲㈳慢戲换㘶㜶㜹㈵扢㕣捡㉥㤷戳换㔶㜶搹捥㉥㕦捡㉥慦㘶㤷㥤散昲攵散昲ㄵ戴㠹慦㐲㑦㑦㌶扡㕥晣摥㕤㉦晥攰敢攷㑥㕦㉦㥤㝡㙥昸ㅦ扥昶㕦㝤晢搰攸戱㘸㔰搳扥㜹ㄵ慣搶攰攲愳愳㐷昸摦昶㔲〱愱戰㡦搹㡦搸㘳㘳攵㘳㐷捣㠷捣ㅣ愷㤵㐲晣㈶㐶ㄹ㐴摢㍥晢愲攳㤵慢㔷㠵㜶户㑦㥡㠱搵㔸戸㤱愸㙥戲㕡昳捡挱㠷戶慥㕣っ捤搰扡慤戵慥昱㤰㑤摤ㄶ㈱㔶㔶㈰敦扢愳戵摢〵戳㔲戳㈶慥㌹扡晡挳㉤搵敥㠲㕦㕤㘹㕦㍢攳㕢捦搴㙢㌷㡤㘸〲㑡㙤㕤㥥扤㘹㤶扡㑡㡦㙢㜸㙡戵ㅡ㔸㥥っ㙦挴㕤㜰㑡㔷㉣㝦搱愲㑡戴捡㌲搵㥢㔹ㄵ㐹晤挸扣㠷㠹㐲㕡换ㅦ㐹㘲敤㤳搷㐲〸戳㔵挶㜸搷㉣㍦摣㔸㌲㔷㉡搶㉤㑤㑤昴㍢㔱㜱愸〹㍤㔳㉤搵㠲愹慡ㄷ晡搵㑡㜳捤㐴㜹摤㠴愶㈹㥦愹㤶慤敥敥㡣㈸〵㈸摣慥㉥愵㌲て戴㤷〵㈱㐴㠲挴ㄴ攴㕢㥢搹㙥昴ㅣ㘶㠷㔹㔴㉣昲㘴昶愳摢㍣㡣攳ㄵㅤ㤳㈲㠱㠹㌹搱㝥昰愵昷㙤昳搸㍡攵摥摦挶搹散㔰㌴晢㤳敢㤶ㄷ㥥㌶扤㜲挵昲㔳慤㥦攲㠸㡣〱㠰摣つ㈸㠴戶慢㐷㔳愷慥愹㡤摣㔵愷ㅣ慥收㔷㉤攷搲㙡〸ㅣ㉣㘴愱挰愵摤㜴ㄹ㌷〱㘵散㈷ㄸ〲㈸ㄶ㌳昹〳㙣㤴㉦攲捡攴愸㥤㔲㘴戹㐹㤱戳㕦㤳㉣昷搹㌳㑥㈵戴戴㔲ㅥ戰㐱ㄱ㙤搵㠴㝣晤㘴㔱摦㉣㘹㠳㜱挰㥥〲㤷㥡㡥ㄷ㙥㌴攴㜶㤳㤴㘸㈶摡搳〵扢㑥ㄷ㔰ㄵ㌴敢㠳ㄴ㔹〳搳戴㘸㠳昴挶〹㈶愲ㄸ愴㔸㜶㍣戹㤹挹搸㍥㐵㐷愰㝤㤲〹搹晡㐸㝢ㅤ㐱㘶摦捣愴散搴㔶ㅥ昷戴搹㔶扥扣搶㘶㌷㘳攱㡣㕢〸づㄲ摣㑡㜰〸㐰晤㉢㌴ㅣ戵ㅣ捡捤㤷昱㈱摣ㅢ户ㄳ㝣ㄸ〰晡挹愰捥㠹㔴ㄵ㝤愸㥤昸㤱㙣搷て㍦㔹㥣㘲慤㡡攸ㄹ搷晤捣㝥㔷〸ㅤ㜹㥤扢挳搶㜶㡢㡤晤㔸㝢摥㑣㑥㠷ㅣ㤹搲㌴㌹搷㙤㥡㈶ㄷ㠲㑤㍢戴㕢㜷愲慢㌱㑣㜰ㄷ㐰搱昸〸㈱㡣ぢㅤ摥㥤㜹昴㜴㈹㍦㄰㙥㤱㜶㠶㍡㌴昰ㄱ㈳㜳ぢ㤰愲攴㌶㙤㕦昶㝣㘸扡㠳㈳昶〷摥㠷㍥摣㕥扥㈳愲户搸捤㍤扢挳㜸搱㍢昴愲敦㠶㜸愹㝦㙡㙢㘳敥㐱戵昱㌱㠲㝢〱㕡㙣っ㜷摦敦㌴㔲㈰㙥戱㥢愰摣㝥㐶㕤挴换㕤摡㔸戳挴〲昵搹㑢愶㝦挹ちㄱ挱㤸㥤㠶㉦㕣昵㝤慢㠲㑤㙤㔹㄰摣扦ㅣ㙣㐶〶㌳㝥搵㈵㝥捦㐷づ㍥㄰㠶愱扢㍢摢㤵㘹昱㤱㔳㝣捤㐴捣㈹挱㌹戴挱て戵㔷ㄲ㠹㑥捤散挵㝥改晢换㍤㑤搲㠱㈶戹ㅦ换㙡㍣〰〰㉤愱晥扥慤㐶㌹捣㘶扦㈰捤㥡㍤㔶㐶昸㔲㜶㈷㉤㌱挴㑤㝡愴㔷〷㙣㈷ㄱ㍦〸晡摤㐵挷慤㉢㡢㕥㜷挱昲㑢㠸㉤㌸ㄵ慢愸挳戲㔴㌵㝢扡攲〳愲㉢扡扡㌶敤愷㔳攲㙢挲㈷㉤㕡㈲㔵摡㔳㉢㔳昶攲つ愶㘲ㄸ㤲㑡㈵㈵㌴㔴搷㐰攴㍣戶摤㔳㌱ㅤ愸㤸〷戱㜰挶ㄱ㠲㌱㠲愳〰戹ㅦ㐱搳散㜴攱㤹づ敢㔹㘷㐸㝢㜹㌹㔳㈰ㄹ㈴㐴昸㔶㕢㘵㜵㡣慦昹㐵㠲㐷〰㕡摣ㅦ〶㈰㔳ㄸ㔱㐸㥥㘰㐴㐹㘳搸ㄷㅣ敢㉡㜹㘰㥦㡤挴搲㔴㉤〸慢㉥㌳㑢晤昶㜴昵㙣㌵㥣㜶㠲㌵㘴愲㠶散愸㜰㜱搵昲挰㕤㍥㝣㥦ㄶ㕣㜵㙤捤㉡ㅢ昶㘲戵〶搵㌶㍢扤ㅢ㌶收㔸づ昸㤲戲㌷捦㉡㕣㥤敤㡦昱〸㠵㤵㤶㜸㉢愳戱㍢㡡㝥㜳搳㌷搰㔸搱㈵㈷慣㔸扤戶ㄶ㍡㤶ぢ㌶㔶ㄱ㤹㠳㜲㡦扤戴敡㕢搶㜴扦㝤捡㜷捡ㄵ挷戳㐸っ昸㤸㑣搶捤㔹㤷㤰㈵㔸愸㌲〷㔸昵晡敤㈵摦昴㠲㌵㤳〹挵㡤晤㑤㜷㤲ㄶ挹搹㤳㡥ㄷ攰㌵㐲㐵㤶〷散挵搵敡㔵㘴㙣㙢慥㜷捡㕣ぢ㜶〵㔵挸昴晡ㄲ搲愸慣捡㘶㔵㈱㕢攸㤴㍥摣㤰㘷㌲㤴扤㙥〲愱㔵㈶挷㤸㜹㡡昵愶㕦ㅦ攵㘸攸愷㜳㑣㝤挸ㅥ搵㤱㕤愹㕡㤸㤲㙡ㅣ㘷㥦㡦〳㝣敡搴昹搹㐶㘶敥㕤攵慣㜳㡣昲愷攸㜸㘱㡢㝡㈲㠴㌱扡㝤㥡㔵㠸㈳攷㐰〲㐱㜱摥戵戲㕦搱㤶㌶攴扥㝤㡤攲っ㌲㐹㝤昶㥣戹㘲㔵㤰㡦㜶捤㜰㥦扥愱ㅢ敢㥡㤵㈰慡㥢慡扡慥㐹搶㈲㕢㉥㤶㑣㜲昰㐴㉤慣㥥㜱㍣挳〶㄰晥㡢㔰收㌵愰捣㙢㠲敡戳捦㌱㌵㈸㘵㍥慢㝡挹昴㥤㜰搵㜵㑡〵摥㌰㝤户㉢㜸ㄲ㐲㑥捤ㅢ㕦戱捥ㄸ㙥昱收捦挳㘵ぢ㐶㐱敥㔱攸㔱㉥ㅤ挹て捥捤慡㍣晥㔳ㅤ〶㤶愰㘰㈴㔲㙡晣㌲㥥㤶㤳搳ㄱ㔰㌹㜲摤㠸捦㘰摣㜸ㅥㄸ慤㠴㐸昵ㄴㄶ㐱㔴㌰愱攴ㄹ攲捥摢攷㍤㈷〴昵㐸戱ㄹ㈷㥣づ㐰㜲〰ㄴ㘵㝢㝢㥢㔰㌵搱㘹愴㙥ㄵ敥摣㕣搵㘴㈶敥搸㕣㥦戴ㅢㅦ摤愲㕡㕢㤴㠴㈱搹慥㤱㔸㤶㉤挶戸㥢㑣㡤ㄲ挳ㅤ㕢ㅢ㤵ㄶ㌶㙤慣㍢戵挸扢㌰㑣挲㌳ㄹ攳ㄳ挲㈸㐸昴㐶㌶㡡㌱晢㜴昶㐸㘴㙣攸〳ㄴ㘹愷㌴慥㍦㑡〹捥攲搸㐹搹㉡㐶㜷㤰敦㝤㔱㜱扥ㄶ㌶搵㤸搷㠶愲㥡㠹㑡㘵摥㠳㤷㔰㌲晤昲㉥ㄱ㘹捣㑤㕢ㄸ㤱捥㑥慤扦㕥摥㠴㈰㐶㘲挸戴㐸㑡ㅣㄸ㘲〸攱㑡㘴㔴改㥤昵㜳愹敢攸〲敦捥㔸愶㈷ㄴ㔸っ换搳搶扡戸㘱つ㑦㝥㐸㍡搴㜷㡢愲㐷つ㝢㘲㈵㠰㐹て愹挷愳㤲〸戸㘱㥦㘳㔸ち㠷ㄸ愰㜶愳搲㐲㈹㐴㙡户晥〰敥っ㜶て㜵戰㈲㍡㜵㐲敦㡣ㅡ㌴㥦挲戸捤㤳愰散㜴㐸㔱㈸㔲㕢慥晦ㅣ㔷摦㝡㠹搷ㅦ㡣㘷攲㐲㈴㐴㑣㜷愵㜸て㈰㙥㌲㌳㐹㈹ㅡ㡡ㄳ收㕡戳㠹搲敡㡢㜱㜴㌱晡改昲昹㈱㑥昱㌰㤷㌵㐰戱愹攰㥣㕢攸挰㥡㔶㌶昶搹戳㕥愹㔲㉢㕢㘲㡡㘳㕤㉤ㄶ㜹㔷搰㑢㡥〰㙡㘹㑡㔹㤷㘸㔱㘶戱㤵攲㤴㐹愴捥晤㙥㘳ㅣ摤㐵挹攱ㄹ摡昴㌱〱㤹ㄲ㤶㤳㠴搸愶㜳ち昴て昷㌷づ㌰挸攱㌹愸戴㑤㈸敡戲㌹㥣挷慢㘷㤱㐵摡ㄲ捤收慡㜳㔵晡散〹搴㘹㐷愳㜶〵㡤㌰㑦慤昰昲㜹㌸㈳ㅤ㑡〷ㅦ㤲戹ㄱ㘵㜷㙦㍣㉦户㤹ㅢ㈰㠵㔰㐰㌱挷换㕤㔰〶慢ち㐱愲挳㥤㙤㜸摤㡡搹㕦㝡摥挶〴㠰㘲ㅡ㤸づ㉤㕡㙡〷㘷ち攵敤ㅤ㥣㍢搱㉡㈵㐳㥡㑣愶㌲㐷㌹㠴㠰㍤㠸〶㘹攲㐶㝡愹ち㈳ㄴㅥ㤰㠳㘱昱搹挴ㄱㄷ㕢愰慡㝦㑢ぢ㜲挱っ㜱晣挵㍢搴㠲㥥㈸㤷改敥㈲㍥户㉢愸㡡愳ㅢ摡ㅤ㍤搰㜲㈸㑢收㐴晦敥敥㤶㡡攸戰攰搱改搱搳㘶㔸㕡㕤っ㌷昴挱慤㑥㔹㈲昷㝤挴㈳戶㝣㍢㝤收㙥㡦〷㔱搷戹昶挵㉢㕥昵慡㈷攳捡〵㍣昵〷づ挱ㄱ捡ㅥづ戲㤸昹㌹晥㤳㉢㥢挹㝤て㑦摣挹戰昹㠰㐶㠰㠴捦㤱慢㘸捣攰㉦㤳搴挳昸㥢挲㉢昰摦敢㈷〷挸㉢〷㕡㜸㐵㤴挱ㅥ戳㜸㤷摥㌳㘶㔱㙦㠲戴㘴ㄸ㄰㍣㍥㈴㤲捤愸㌷㜰㐳愲㠳〶㈰㥣㌱㑢〸昲摤㠵扦㈹攴ㄳ㠵ㅥㅤ昵攰挱㤰晦㍦㤴㡡愵㝡㑢戱晡㕦㄰㙡昵㍡㠸㈱㘴〲㑤敡㜲愹扥摢㑣愶㌹㑤㈶挵㈳㈱㈲换㘷㔰㠸慦ㅣ㔳戵敦㈸㈹捥㜹敤㙤㐶摦昷挳扦晦㠷㥢搱昹㠸㌹挴㕦㐳摡敤ㅥ摣搷摤㠵慥㑤敥〲ㄳ昹攲㉥㉣愰愰㤸搱搷敥㐲ㄴて㌹〷挴昶敥〲昳㝣㈹㑥㘱㈲敤㥡〸㜱㜰㌷㜶㡢换㔸搹㘹ㅣ挲戵〲攴昶㘱挰㠲㈹㐴愷づ㙥㐶㉦㤸扥改ㅥㄲ晣㈹摦㠲㘱昳㤷㜰慡㕢扡戰挷㙤㕢搶㐸愷㉤攲ㄶ㜱挴㝤㉦戶戲戳戳散愰㤴扥㜴㈸㕦ㄵ㔴晥㕤㐴㑤ㄴ昷㄰㤹捦ㅥ昸攳㔳晦晣散ㄷ挶㜹㜲㉤攲搵ㅣ㔳挵㥤愴敦改㔷㈰挱㥢㌸㌴㜲㌳㍦搲㌹㠳捦㤵㥣戵㡡㌵㘹晡攲ㄱ〵㠶ㅢㄷ㌵攳㈵ㄸ㔳㌳摦㙥㜰㌷㜱〶㐲扢㥢愳㉤愱㑦昹挸㐹挲㠵愳㠹㠱㑢㝣㉦㑥㈱慡戶挶慣㐳捦㌳昷㐷㌰㐷敦㜰㈰捤ㅥ㈳㜷愰扣㤴晡挳搸摥㘹㐴㈶㜳っㄶ㑤㙦㉢ㄵ㡦〰挴㕡ち戹〸㜲㐸㜲㔳挳挳〱愲愵捥愳㤰㝢㄰㈰㈵换搶㥡敥㘵㙣㘰㑦〹㔸昵〳㠰ㅤ㝥搰㠲㔵〴ㄵ攳戸㝣愷扢㕢㠶〲㘲搳挴戴慤昸㌴ㄷ㔰㤰㡤っㄱ㘳㌱昶㈲ち昱㤵㍢㡡搲㡥㐳㔳㝣㐹扦慢㤳㜰㕡戰㜳㉥攳㙥㐵昷愴㔷挳㈹㄰搸㤹扣ㄸっ㙦㍦搱搸㥣㑡扥㑥㌷㉤㙡ㄴ攱㠰㉥搶㍢昵㐶㔵戰㔹摥㈱散㔰㤱〸攴㔷㐳慣ㅦ㘹㍣晡收搶ㅡ摡㌸慦〷ㄳ攴て晥搷ㅤ㈹㠲㡤户㔲㘲愰㘱㜷搴慡愰㡦㡡㍦㡥㉥㥣㜴㐶ㄹ㡤愲摣㉢收慢㘳挹敡捡㙥戲晦捣㘴㡢㘴㍤挱摥㑣㘹㌷搹晦㈷㠱搸搶晥慢攳散㡢㥦昱㔴㔴攰㑤㡥戹㤴㙤搳㌷㕣ㄱ㐴戹㤱挸㤱㑤戲㈱㐵愶扦㜵㘹ㄱㅦ戲敡㙡搱攰㠸㠱㜵户ㅥ㤳愸昷愵㙦摢摢㔶〱㌲㑦㤴晢㝤愸愰戶晤㥢昵㔶扣搳捤晦㉡㍡ㅥ㌸攳㤴晣㙡㔰戵挳攱㐵㈴㠰㠷昹ㅤ㥡つ㥦㘷㐲扤搶慡搴敥挶㑡昴㍤㡤㍥㘷攷愱戰捦㕡攱㝢㤵㤷㘴㤶㘱㘷㔹つ㝥㤳㌴㤸㐸㌵搱㍡〴㌷搹㡦搵捣ち㍥㘳㥤㐷摣㌳㈴㙡㔷ㄸ㍢ㅤ㝤㙥㍤慤挱愵挳㜹慤㑦㈳㌶㘴㔵㐶㤱㈸㤳㈹㍣昹ㄹ慥㙢敢ㅡ㌴户㡤收ㄶ戰㘵㘷昱户㘲敥ㄵ搰㜴㘷㙦㘹㘶ㄹ扥㤳㕦㈷ㄷ㡤ㄵ㐲㙣慥挷昱㜷攷挱㕡㍥㙤〸㝣ㅥ㝤摣捤愰搸㐸〵愱戴ㅤ㘴挲㑢攸慡㈶〸昰㌳捡㔱㠱㌷㡡ㄱ㍦㡡愲晡㌶愶㐵〱㐰ㄹ㝢㐰㠰昶㕣晤ㄲ㥡改〸〲ㅢ攳㈲㔷慢ㄹㄴ攴昹慢㈸搰㙦攳㑦㌱㤰㈰㔸㈷㠹攵扥㔵戰㤷ㄳ搸挱㜸昳慡戸㑢㈱㐳ㄷ搵敦攲㔵慦攰愷ㄷ慥㐲ㅣ㜶㉤戲ㅢ㐱搹㠸㝢愰㥣㔱摣㡤挸㔴㕥㐰㠷晡㔴慡挰戶㥦捡㌷搰㜴昳㔴攸㐷挸昰㤲捦ㅦ㡣敤㤰攱愳摡〸〸㐲㠲ㅡ挰㘰㙣㡥〶愸㘱愹戶昲㍡㘳昱㈶㠹㡣敢敦愲扦㙦㡦晦攸㉤㕥晦㌱慥㐴愷愲慡㜹ㄶ搴愹㌲㡢㉦㈷㘷㜱つ搸昶戳昸搲㔶戳ㄸ㝣ち㝤㌸ㄲ攳㔹㠰晥㉥㐵戶㤳㔹㝤ㄶ〵㉥㈸㝦慡ㄴ㘳㥢收㑡ㅥ㤱扥扦㠶㐲㝦搷㈰㘹捡〰㡦昱敢〴捦ㄳ㕣㈷昸ㅣ挱攷〹㝥〳愰㍦㍢㐸㌲㑢挳㉦㄰昹㐵㠲摦㈴昸ㄲ挱㙦ㄱ㝣ㄹ〰つ㐹㜹㘹昸摢㐴㝥㠵攰慢〴㕦㈳昸ㅤ㠲慦〳昴㘷ㄵ㠹㉥挳晥〶ち昱戰㜳愴㐱捡攷㑡攲攵昱㘸㈷㕦㤱搷攱攵扣戶敤〵㌷㡡㉢敦ちつ㠷㈹昱晢摦戶㠶㈹摦攱㤹〵㔵㡤㜹攲昴改㈸慡㤷挹㐶㔹㌴昰愴㑥ㄶ㤰㠷戹㤰捡㡢ㅢ晦挹敢㡤㘰ㄳ㉡㜰㠱㜱㜵㘳昲扡㌴㜶攳挶㐷昱㥤㤹戴挱㤳昵昵㜶摣㤸㌲㈱㡤㉢㜱攳㝦㍦㝡愸摥㌸ㄶ〱晤攴ㅣ昹㌳挵㘳㤷㍤㑣攲㥢昳〱㌴捦搹昴〲㝡㙤㡤愶晥㤷㘴㜸㐵晣㠰㍥ㅣ㙦昱昱搵昷ㅣ㑥㙢攱㔰ぢ㑣㠵晥挷ㅦ㘶㜱㡡㙢摡っ㑤㝣搴扤㡥昴戹㙦挸ㅤ㍢攷敤㜹ㅦ㠸ㅥ㝢㌶挰捥戰扣慢㔸〴㑥㑤户㕥摦㙤搲っ㈹づ㜰㘳㍤攲戴㕦㤶愷㘲㍡㌳㠱㤲㉡敡㔶㤷㘳捡㘶慥㌷㜸挶昸㈶㠸〳つつ挸㠲昱㈲愰㑥㉤昱晣㜵㘶㤰慡㐷昴捡户㔸昱㙤㠲㤷〱㡡㡡㝡㠶㝣㤰晦㍤㠰㠱昸㥦摥ㄸ㕥㤷愸㑦㔶慤挴㉦㑢戲㤱昱ち㍢扣ち搰㠵㐰戴㡡㤸戰㘸扣〶㑣攲愵㌹敡慣㕦㙡敦㔵㜳搳ㅣ晦㜳〰㐸㤰㌶㝤昷㝦ㄲ摦昱㙦昰挱㕤昸㘷㑣㜲戲〵攸捥㝥扣戳㘷㤱搱攸扤换敦㌳㤸搰扢㜸づㄷ戸㤱㜷攱ㄳ愹ㄹ㡢㡡㥡㤹搳㔵㑦攱昹㝣〷㥤晢愲扡ㅥ愳㥦㡣搰㍣㠴㔲㔴㥦㡢搱扦ㄲ愱てち晡昳㌱晡㠹〸㝤㥦愰愹攱攵搹㡦㐷攸晢〵㑤㐵㉦攸㡢ㄱ㕡㡦攴㡢㌱晡㐲㠴搶㈳愱㌱㤰搶攷㈳戴ㅥ〹捤㠳愰㤷㈲戴ㅥ〹つ㠶愰ㄷ㈳戴ㅥ〹㑤㠸愰捦㐵㘸㍤ㄲ㕡ㄲ㐱㍦ㄶ愱昵㐸㘸㕢〴扤㄰愱昵㐸㘸㙤〴㍤ㅦ愱昵㐸㘸㝦〴㝤㌶㐲敢㤱搰㈲〹晡㑣㠴搶㈳愱㡤ㄲ昴㕣㠴㤶㤱っ搲㔴〹㥢㝦ㄷ〵攳㜵㠲㍦〵㈸收扥〹戸㘳㌹㈵㤱㍢昴昸摥㐰㔷㐵攱攳㌳㡣㌷愳〲㙦ㄴ㈵㑦㠶㍣ㄳつ㤹摥㐶㈱㥢㔷㤴㐶愹㌸ㄹ㔵㥣㤰ち愵㈸愱㔲㌱ㅤ㔵㡣〳㘱晣ㄹ㠰愲〴㜲㑥挶て㜸昷ㅡ〱敦晥㍣㉡挸ぢ戹〶搲晤㤳㉤㉦攴扡㐸挵㜸换ぢ戹㔶㔲昱㠹攴ぢ晦㤲て㤵㠹愱搰攴㌴つ㜲㠲戲摥㝦㡤㐲㝦搷〰挷㜶ㄱ扦散㌵㔵㝡扡晣昴搳㍦ㅤ攸ㅥ扥慤晢昱㑦昶扤昴昶摦晥攴㠵ㅦ㍦㜵攲摦㝥昶昲换㍦晥㤷ㄷ摥晡搹昷㔷㑥晣昰㍢摦昹慢㑦扤昲搶㑦昶摢慦㘶㕦晦改摣慢捦㡤㕤㜹敥ㄹ晢晣〳愷㥥㝢攲昲㘳㘳ぢ㌷㡤㜴㜵昵昴摣㍢昴㌷户摥㌷㜸晤㤹㌷搴㕦晣攳㐱㑦挹㜴昱㠲收㘱㜰摡㌲㡣ㅦ愲㠰㘱㜰挴敦敢㌰㌸㕤㔹愸㐷愳㠵㥡〴愲〰㘷㥣〳㤰㡡㐷㥡㉢㝡晦〷㥥搵㔸㠶 | E30: 㜸〱敤㕣㕤㙣ㅣ搷㜵摥扢攴㉥㜷㤶愴㐸㡢戲㘵㌹㡥捤挴㜶晣㐳㤵ㄶ㘵慢戶搲㉡っ㝦㐴㠹〹㈵搲㈲㈵搹戵㔲㝡戸㍢㐳㡥戴㌳㑢捦捣㔲愲攳搶㑥㥡㌴㑤㝦〳〳㐵敡挴㠵敤〴〸ㄲ愰㉤搰㠷戸㜶㥢戶㈸摡㈲㐵攱〰㝤㐸ㅦ㕡昴挱つ㡡收愱㐵㈱愰㉦㝥〸㤰㝥摦戹㌳扢戳㑢敤㤰㕥摢㉤㕤㜰散㍤扣㜳敥扤㌳昷摥昳㝢捦戹愳㡣捡㘴㌲㍦挵挵扦扣扡㔹戸㝤㜱㌳〸㉤㜷㜴慡㕡愹㔸愵搰愹㝡挱攸㠴敦㥢㥢㜳㑥㄰㜶愱㐱㝥搹㐱㝤㤰㕢づ㥣㘷慣挲昲㠶攵〷㘸㤴换㘴ち〵㈳㡢㝡㍥㠴扦挱昸挶㘰慦扥㙥㠰愵愹挹昹㤵换㜸敡㘲㔸昵慤挳挳ㄷ㜴摦ㄳ㘳㘳愳㘳愳㐷ㅦ㍡㍥㌶㝡攴昰昰㔴慤ㄲ搶㝣敢㠴㘷搵㐲摦慣ㅣㅥ㕥愸慤㔴㥣搲愷慤捤愵敡ㄵ换㍢㘱慤ㅣ㜹㘸挵㝣昸搱戱㠷㡦ㅤ戳㡦ㅦ㝦戴て慦捥㥣㥤㥡㕣昰㉤㍢㜸㡦㥥㤹攳㤰ㅦ㥥戶㑡づ攷㘶㔹扥攳慤㡥㑥㑤攲晦挴昸㜱昷挸攸攲㥡㘵㠵㝣戵攵㕢㕥挹ちっ㜴散㜵㈷㠲愰收慥㜳昱っ㜷〶㔳㉤㤹㐱㤸㜳愷慣㑡挵㜰攳愷ㄶ摣㜹慣㕤挵摣散㜳ㄷ㉤㉦㜰㐲㘷挳〹㌷昳敥ㄲㅥ㔴敥㜷捦〷搶㌹搳㕢戵捥㥡慥㤵㜳㑦搵㥣㜲户扥㌲㕤昷挶㡦㐸づ㑣愶㍦㍡ㄱ戸㔳㙢愶㉦㈳ち戸㌰㈹㙤㘷晣㔲㜳摢扢摡㍦㤷㐳㤷㌷昰㤹昷戴㙦㠷㥡ぢ愶㕦㙦㌹搲扥㘵㌴昹收ㄱ㍣搸扥㝤㘲㡤㥡晢摣摦扥㡦㉣㘵㜳㙢搵ㅢ昱户慣㈸㈶㘳攴〹㝡〸ち〴㈴愰㔱㈴攸㈵攸〳㔰摤晦つ㈹㐹㜶㘴㔵㜶搹捣㉥慦㘴㤷㑢搹攵㜲㜶搹捡㉥摢搹攵搵散昲㕡㜶搹挹㉥㕦捥㉥㕦㐱㥢昸㉡昴昴㘴愳敢敥挹㐳晦㝣昹摢㑦㑥晣改愵户㔷扦搵㤷晦㜱摦㍥㌴㝡㉣ㅡ搴戴㙦㕥〵慢㌵戸昸攸攸ㄱ晥户扤㔴㐰㈸散㘳昶㈳昶搸㔸昹搸ㄱ昳㈱㌳挷㘹愵㄰扦㠹㔱〶搱戶捦扥攸㜸攵敡㔵愱摤敤㤳㘶㘰㌵ㄶ㙥㈴慡㥢慣搶扣㜲昰愱ㅢ㔷㉥㠶㘶㘸摤搶㕡搷㜸挸㤶㙥㡢㄰㉢㉢㤰昷摤搱摡敤㠲㔹愹㔹ㄳ搷ㅣ㕤晤攱㤶㙡㜷挱慦慥戴慦㥤昱慤愷敢戵㕢㐶㌴〱愵戶㈱捦摥㌲㑢㕤愵挷㌵㍣戵㔶つ㉣㑦㠶㌷攲㉥㌸愵㉢㤶扦㘸㔱㈵㕡㘵㤹敡捤慣㡡愴㝥㘴摥挳㐴㈱慤攵㡦㈶戱昶挹㙢㈱㠴搹㉡㘳扣敢㤶ㅦ㙥㉥㤹㉢ㄵ敢㤶愶㈶晡㥤愸㌸搴㠴㥥愹㤶㙡挱㔴搵ぢ晤㙡愵戹㘶愲扣㘱㐲搳㤴捦㔴换㔶㜷㜷㐶㤴〲ㄴ㙥㔷㤷㔲㤹〷摡换㠲㄰㈲㐱㘲ち昲慤捤㙣㌷㝡づ戳挳㉣㉡ㄶ㜹㌲㝢昷㌶て攳㜸㐵挷愴㐸㘰㘲㑥戴ㅦ㝣改㝤摢㍣戶㑥戹昷户㜱㌶㍢ㄴ捤晥攴㠶攵㠵愷㑤慦㕣戱晣㔴敢愷㌸㈲㘳〰㈰㜷ㅤち愱敤敡搱搴愹㙢㙡㌳㜷搵㈹㠷㙢昹㌵换㔹㕤ぢ㠱㠳㠵㉣ㄴ戸戴㕢㉥攳㈶愰㡣晤〴㐳〰挵㘲㈶㝦㠰㡤昲㐵㕣㤹ㅣ戵㔳㡡㉣㌷㈹㜲昶㙢㤲攵㍥㝢挶愹㠴㤶㔶捡〳㌶㈸愲慤㥡㤰慦㥦㉣敡㥢㈵㙤㌰づ搸㔳攰㔲搳昱挲捤㠶摣㙥㤱ㄲ捤㐴㝢扡㘰搷改〲慡㠲㘶㝤㤰㈲㙢㘰㥡ㄶ㙤㤰摥㌸挱㐴ㄴ㠳ㄴ换㡥㈷㌷㌳ㄹ摢愷攸〸戴㑦㌲㈱㕢ㅦ㘹慦㈳挸散㕢㤹㤴㥤摡捡攳㥥㌶扢㤱㉦慦戵搹捤㔸㌸攳ㄶ㠲㠳〴户ㄲㅣ〲㔰晦づつ㐷㉤㠷㜲昳㘵㝣〸昷挶敤〴ㅦ〶㠰㝥㌲愸㜳㈲㔵㐵ㅦ㙡㈷㝥㈴摢昵挳㑦ㄶ愷㔸慢㈲㝡挶㜵㍦戳摦ㄵ㐲㐷㕥攷敥戰戵摤㘲㘳㍦搶㥥㌷㤳搳㈱㐷愶㌴㑤捥㜵㥢愶挹㠵㘰搳づ敤搶㥤攸㙡っㄳ㝣〴愰㘸㝣㤴㄰挶㠵づ敦捥㍣㝡扡㤴ㅦ〸户㐸㍢㐳ㅤㅡ昸㠸㤱戹〵㐸㔱㜲㕢戶㉦㝢㍥㌴摤挱ㄱ晢〳敦㐳ㅦ㙥㉦摦ㄱ搱㕢散收㥥摤㘱扣攸ㅤ㝡搱㜷㐱扣搴扦戴戵㌱昷愰摡昸ㄸ挱扤〰㉤㌶㠶扢敦㜷ㅡ㈹㄰户搸㑤㔰㙥㍦愳㉥攲攵㉥㙤慥㕢㘲㠱晡散㈵搳㕦戵㐲㐴㌰㘶愷攱ぢ㔷㝤摦慡㘰㔳㕢ㄶ〴昷㉦〷㥢㤱挱㡣㕦㜵㠹摦昳㤱㠳て㠴㘱攸敥捥㜶㘵㕡㝣攴ㄴ㕦㌳ㄱ㜳㑡㜰づ㙤昰㐳敤㤵㐴愲㔳㌳㝢戱㕦晡晥㜲㑦㤳㜴愰㐹敥挷戲ㅡて〰㐰㑢愸㝦㙣慢㔱づ戳搹捦㐸戳㘶㡦㤵ㄱ扥㤴摤㐹㑢っ㜱㡢ㅥ改搵〱摢㐹挴て㠲㝥㜷搱㜱敢捡愲搷㕤戰晣ㄲ㘲ぢ㑥挵㉡敡戰㉣㔵捤㥥慥昸㠰攸㡡慥慥㉤晢改㤴昸㥡昰㐹㡢㤶㐸㤵昶搴捡㤴扤㜸㠳愹ㄸ㠶愴㔲㐹〹つ搵㌵㄰㌹㡦㙤昷㔴㑣〷㉡收㐱㉣㥣㜱㠴㘰㡣攰㈸㐰敥〷搰㌴㍢㕤㜸愶挳㝡㌶ㄸ搲㕥㕥捥ㄴ㐸〶〹ㄱ扥搹㔶㔹ㅤ攳㙢㝥㤶攰ㄱ㠰ㄶ昷㠷〱挸ㄴ㐶ㄴ㤲㈷ㄸ㔱搲ㄸ昶〵挷扡㑡ㅥ搸㘷㈳戱㌴㔵ぢ挲慡换捣㔲扦㍤㕤㍤㕢つ愷㥤㘰ㅤ㤹愸㈱㍢㉡㕣㕣戳㍣㜰㤷て摦愷〵㔷㕤㕦户捡㠶扤㔸慤㐱戵捤㑥敦㠶㡤㌹㤶〳扥愴散捤戳ち㔷㘷晢㘳㍣㐲㘱愵㈵摥捡㘸散㡥愲摦摣昴つ㌴㔶㜴挹〹㉢㔶慦慤㠵㡥攵㠲㡤㔵㐴收愰摣㘳㉦慤昹㤶㌵摤㙦㥦昲㥤㜲挵昱㉣ㄲ〳㍥㈶㤳㜵㜳搶㉡戲〴ぢ㔵收〰慢㕥扦扤攴㥢㕥戰㙥㌲愱戸戹扦改㑥搲㈲㌹㝢搲昱〲扣㐶愸挸昲㠰扤戸㔶扤㡡㡣㙤捤昵㑥㤹敢挱慥愰ち㤹㕥㕦㐲ㅡ㤵㔵搹慣㉡㘴ぢ㥤搲㠷ㅢ昲㑣㠶戲搷㑤㈰戴捡攴ㄸ㌳㑦戱摥昴敢愳ㅣつ晤㜴㡥愹て搹愳㍡戲㉢㔵ぢ㔳㔲㡤攳散昳㜱㠰㑦㥤㍡㍦摢挸捣扤慢㥣㜵㡥㔱晥ㄴㅤ㉦㙣㔱㑦㠴㌰㐶户㑦戳ち㜱攴ㅣ㐸㈰㈸捥扢㔶昶㉢摡搲㠶摣户慦㔱㥣㐱㈶愹捦㥥㌳㔷慣ち昲搱慥ㄹ敥搳㌷㜴㘳㕤戳ㄲ㐴㜵㔳㔵搷㌵挹㕡㘴换挵㤲㐹づ㥥愸㠵搵㌳㡥㘷搸〰挲㝦ㄱ捡扣〶㤴㜹㑤㔰㝤昶㌹愶〶愵捣㘷㔵㔷㑤摦〹搷㕣愷㔴攰つ搳㜷扢㠲㈷㈱攴搴扣昱ㄵ敢㡣攱ㄶ㙦晥㍣㕣戶㘰ㄴ攴ㅥ㠵ㅥ攵搲㤱晣攰摣慣捡攳㍦搵㘱㘰〹ち㐶㈲愵挶捦攳㘹㌹㌹ㅤ〱㤵㈳搷昵昸っ挶昵攷㠰搱㑡㠸㔴㑦㘱ㄱ㐴〵ㄳ㑡㥥㈱敥扣㝤摥㜳㐲㔰㡦ㄴ㥢㜱挲改〰㈴〷㐰㔱戶户户〹㔵ㄳ㥤㐶敡㔶攱捥慤㔵㑤㘶攲㡥慤昵㐹扢㜱昷つ慡戵㐵㐹ㄸ㤲敤ㅡ㠹㘵戹挱ㄸ㜷㤳愹㔱㘲戸㘳㙢愳搲挲愶㡤㜵愷ㄶ㜹ㄷ㠶㐹㜸㈶㘳㝣㐲ㄸ〵㠹摥挸㐶㌱㘶㥦捥ㅥ㠹㡣つ㝤㠰㈲敤㤴挶昵㐷㈹挱㔹ㅣ㍢㈹㕢挵攸づ昲扤㉦㉡捥搷挲愶ㅡ昳摡㔰㔴㌳㔱愹捣㝢昰ㄲ㑡愶㕦摥㈵㈲㡤戹㘹ぢ㈳搲搹愹昵搷换㥢㄰挴㐸っ㤹ㄶ㐹㠹〳㐳っ㈱㕣㠹㡣㉡扤戳㝥㉥㜵ㅤ㕤攰摤ㄹ换昴㠴〲㡢㘱㜹摡摡㄰㌷慣攱挹て㐹㠷晡㙥㔱昴愸㘱㑦慣〴㌰改㈱昵㜸㔴ㄲ〱㌷散㜳っ㑢攱㄰〳搴㙥㔴㕡㈸㠵㐸敤搶ㅦ挰㥤挱敥愱づ㔶㐴愷㑥攸㥤㔱㠳收㔳ㄸ户㜹ㄲ㤴㥤づ㈹ち㐵㙡换昵㕦攳敡㙢㉦昲晡捥㜸㈶㉥㐴㐲挴㜴㔷㡡昷〰攲㈶㌳㤳㤴愲愱㌸㘱慥㌵㥢㈸慤扥ㄸ㐷ㄷ愳㥦㉥㥦ㅦ攲ㄴて㜳㔹〳ㄴ㥢ち捥戹㠵づ慣㘹㘵㜳㥦㍤敢㤵㉡戵戲㈵愶㌸搶搵㘲㤱㜷〵扤攴〸愰㤶愶㤴㜵㠹ㄶ㘵ㄶ㕢㈹㑥㤹㐴敡摣敦㌶挶搱㕤㤴ㅣ㥥愱㑤ㅦㄳ㤰㈹㘱㌹㐹㠸㙤㌹愷㐰晦㜰㝦攳〰㠳ㅣ㥥㠳㑡摢㠲愲㉥㥢挳㜹扣㝡ㄶ㔹愴㉤搱㙣慥㍡㔷愵捦㥥㐰㥤㜶㌴㙡㔷搰〸昳搴ち㉦㥦㠷㌳搲愱㜴昰㈱㤹敢㔱㜶昷晡㜳㜲㥢戹づ㔲〸〵ㄴ㜳扣摣〵㘵戰慡㄰㈴㍡摣搹㠶搷慤㤸晤愵攷㙤㑣〰㈸愶㠱改搰愲愵㜶㜰愶㔰摥摥挱戹ㄳ慤㔲㌲愴挹㘴㉡㜳㤴㐳〸搸㠳㘸㤰㈶㙥愴㤷慡㌰㐲攱〱㌹ㄸㄶ㥦㑤ㅣ㜱戱〵慡晡户戴㈰ㄷ捣㄰挷㕦扣㐳㉤攸㠹㜲㤹敥㉥攲㜳扢㠲慡㌸扡愱摤搱〳㉤㠷戲㘴㑥昴敦敥㙡愹㠸づぢㅥ㥤ㅥ㍤㙤㠶愵戵挵㜰㔳ㅦ摣敡㤴㈵㜲摦㐳㍣攲㠶㙦愷捦摣敤昱㈰敡〶搷扥㜸挵慢㕥昵㘴㕣戹㠰愷晥挰㈱㌸㐲搹挳㐱ㄶ㌳㍦挵㝦㜲㘵㌳戹㍦挳ㄳ㜷㌲㙣㍥愰ㄱ㈰攱㜳攴㉡ㅡ㌳昸换㈴昵㌰晥愶昰ち晣昷晡挹〱昲捡㠱ㄶ㕥ㄱ㘵戰挷㉣摥敡㝢挶㉣敡つ㤰㤶っ〳㠲挷㠷㐴戲ㄹ昵㍡㙥㐸㜴搰〰㠴㌳㘶〹㐱扥㡦攰㙦ち昹㐴愱㐷㐷㍤㜸㌰攴晦て愵㘲愹扥愱㔸晤㉦〸戵㝡つ挴㄰㌲㠱㈶㜵戹㔴摦㙤㈶搳㥣㈶㤳攲㤱㄰㤱攵㌳㈸挴㔷㡥愹摡㜷㤴ㄴ攷扣昶㌶愳敦晢攱摦晦挳捤攸㝣挴ㅣ攲慦㈱敤㜶て敥敢敥㐲搷ㄶ㜷㠱㠹㝣㜱ㄷㄶ㔰㔰捣攸㙢㜷㈱㡡㠷㥣〳㘲㝢㜷㠱㜹扥ㄴ愷㌰㤱㜶㑤㠴㌸戸ㅢ扢挵㘵慣散㌴づ攱㕡〱㜲晢㌰㘰挱ㄴ愲㔳〷户愲ㄷ㑣摦㜴て〹晥㤴㙦挱戰昹㑢㌸搵㉤㕤搸攳戶ㅢ搶㐸愷ㅢ挴㉤攲㠸晢㕥㙣㘵㘷㘷搹㐱㈹㝤改㔰扥㉡愸晣扢㠸㥡㈸敥㈱㌲㥦㍤昰㐷愷晥昵㤹㉦㡣昳攴㕡挴慢㌹愶㡡㍢㐹摦搳慦㐰㠲㌷㜱㘸攴㘶㝥愴㜳〶㥦㉢㌹敢ㄵ㙢搲昴挵㈳ちっ㌷㉥㙡挶㑢㌰愶㘶扥摤攰㙥攲っ㠴㜶㌷㐷㕢㐲㥦昲㤱㤳㠴ぢ㐷ㄳ〳㤷昸㕥㥣㐲㔴㙤㡤㔹㠷㥥㘷敥て㘱㡥摥攱㐰㥡㍤㐶敥㐰㜹㈹昵〷戱扤搳㠸㑣收ㄸ㉣㥡摥㔶㉡ㅥ〱㠸戵ㄴ㜲ㄱ攴㤰攴愶㠶㠷〳㐴㑢㥤㐷㈱昷㈰㐰㑡㤶慤㌵摤换搸挰㥥ㄲ戰敡〷〰㍢晣愰〵慢〸㉡挶㜱昹㑥㜷户っ〵挴愶㠹㘹㕢昱㘹㉥愰㈰ㅢㄹ㈲挶㘲散㐵ㄴ攲㉢㜷ㄴ愵ㅤ㠷愶昸㤲㝥㔷㈷攱戴㘰攷㕣挶摤㡡敥㐹慦㠶㔳㈰戰㌳㜹㌱ㄸ摥㝥愲戱㌹㤵㝣㥤㙥㕡搴㈸挲〱㕤慣㜷敡㡤慡㘰戳扣㐳搸愱㈲ㄱ挸慦㠶㔸㍦搲㜸昴捤慤㌵戴㜱㕥て㈶挸ㅦ晣慦㍢㔲〴ㅢ㙦愵挴㐰挳敥愸㔵㐱ㅦㄵ㝦ㅣ㕤㌸改㡣㌲ㅡ㐵戹㔷捣㔷挷㤲搵㤵摤㘲晦㤹挹ㄶ挹㝡㠲扤㤹搲㙥戲晦㑦〲戱慤晤㔷挷搹ㄷ㍦攳㔲㔴攰㑤㡥戹㤴㙤搳㌷㕣ㄱ㐴戹㤱挸㤱㑤戲㈱㐵愶扦㜵㘹ㄱㅦ戲敡㙡搱攰㠸㠱㜵户ㅥ㤳愸昷愵㙦摢摢㔶〱㌲㑦㤴晢㈶㔴㔰摢晥捤㝡㉢摥改收㝦ㄱㅤて㥣㜱㑡㝥㌵愸摡攱昰㈲ㄲ挰挳晣づ捤㠶捦㌳愱㕥㙤㔵㙡㜷㘱㈵晡㥥㐲㥦戳昳㔰搸㘷慤昰扤捡㑢㌲换戰戳慣〶扦㐹ㅡ㑣愴㥡㘸ㅤ㠲㥢散挷㙡㘶〵㥦戱捥㈳敥ㄹㄲ戵㉢㡣㥤㡥㍥户㥥搶攰搲攱扣搶愷ㄱㅢ戲㉡愳㐸㤴挹ㄴ㥥晣っ搷戵㜵つ㥡摢㐶㜳ぢ搸戲戳昸㕢㌱昷㌲㘸扡戳户㌴戳っ摦挹慦㤳㡢挶ち㈱㌶搷攳昸扢昳㘰㉤㥦㌶〴㍥㡦㍥敥㘶㔰㙣愴㠲㔰摡づ㌲攱㈵㜴㔵ㄳ〴昸ㄹ攵愸挰ㅢ挵㠸ㅦ㐵㔱㝤ㅤ搳愲〰愰㡣㍤㈰㐰㝢慥㝥ㄱ捤㜴〴㠱㡤㜱㤱慢搵っち昲晣㌵ㄴ攸户昱愷ㄸ㐸㄰慣㤳挴㜲摦㉡搸换〹散㘰扣㜹㔵摣愵㤰愱㡢敡㜷昱慡㤷昱搳ぢ㔷㈱づ扢ㄶ搹㡤愰㙣挴㍤㔰捥㈸敥㐶㘴㉡㉦愰㐳㝤㉡㔵㘰摢㑦攵㉢㘸扡㜵㉡昴㈳㘴㜸挹攷て挶㜶挸昰㔱㙤〴〴㈱㐱つ㘰㌰㌶㐷〳搴戰㔴㕢㜹㥤戱㜸㠳㐴挶昵て搱摦户挶㝦昰㈶慦晦ㅣ㔷愲㔳㔱搵㍣ぢ敡㔴㤹挵㤷㤳戳戸〶㙣晢㔹㝣改㐶戳ㄸ扣㠴㍥ㅣ㠹昱っ㐰㝦㤷㈲摢挹慣㍥㡢〲ㄷ㤴㍦㔵㡡戱㑤㜳㈵㡦㐸摦㕦㐲愱扦㙢㤰㌴㘵㠰挷昸㘵㠲攷〸㥥㈷昸ㅣ挱攷〹㝥〵愰㍦㍢㐸㌲㑢挳㉦㄰昹㐵㠲㕦㈵昸ㄲ挱慦ㄱ㝣ㄹ〰つ㐹㜹㘹昸敢㐴晥〶挱㙦ㄲ晣ㄶ挱㙦ㄳ晣づ㐰㝦㔶㤱攸㌲散慦愰㄰て㍢㐷ㅡ愴㝣慥㈴㕥ㅥ㡦㜶昲ㄵ㜹ㅤ㕥捥㙢摢㕥㜰愳戸昲慥搰㜰㤸ㄲ扦晦㙤㙢㤸昲ㅤ㥥㔹㔰搵㤸㈷㑥㥦㡥愲㝡㤹㙣㤴㐵〳㑦敡㘴〱㜹㤸ぢ愹扣戸昱ㅦ扦搶〸㌶愱〲ㄷㄸ㔷㌷㈶慦㑢㘳㌷㙥㝣ㄴ摦㤹㐹ㅢ㍣㔹㕦㙦挵㡤㈹ㄳ搲戸ㄲ㌷晥㡦愳㠷敡㡤㘳ㄱ搰㑦捥㤱㍦㔳㍣㜶搹挳㈴扥㌹ㅦ㐰昳㥣㑤㉦愰搷搶㘸敡㝦㐹㠶㔷挴て攸挳昱ㄶㅦ㕦㝤捦攱戴ㄶづ戵挰㔴攸㝦晣㘱ㄶ愷戸愶捤搰挴㐷摤ㅢ㐸㥦晢㠶摣戱㜳摥㥥昷㠱攸戱㘷〳散っ换扢㡡㐵攰搴㜴敢昵摤㈶捤㤰攲〰㌷搶㈳㑥晢㘵㜹㉡愶㌳ㄳ㈸愹愲㙥㜵㌹愶㙣收昹〶捦ㄸ㕦〵㜱愰愱〱㔹㌰㝥て㔰愷㤶㜸晥㍡㌳㐸搵㈳㝡攵㙢慣昸㍡挱㑢〰㐵㐵㍤㐳㍥挸晦㍥挰㐰晣㑦㙦っ㙦㐸搴㈷慢㔶攲㤷㈵搹挸㜸㤹ㅤ㕥〱攸㐲㈰㕡㐵㑣㔸㌴㕥〵㈶昱搲ㅣ㜵搶捦戵昷慡戹㘹㡥晦㌹〰㈴㐸㥢扥晢㍦㠹敦昸㌷昹攰㉥晣㌳㈶㌹搹〲㜴㘷㍦摥搹戳挸㘸昴摥攵昷ㄹ㑣攸㕤㍣㠷ぢ摣挸扢昰㠹搴㡣㐵㐵捤捣改慡㑢㜸㍥摦㐱攷扥愸㥥㡦搱㑦㐶㘸ㅥ㐲㈹慡捦挵攸㕦㠸搰〷〵晤昹ㄸ晤㐴㠴扥㑦搰搴昰昲散挷㈳昴晤㠲愶愲ㄷ昴挵〸慤㐷昲挵ㄸ㝤㈱㐲敢㤱搰ㄸ㐸敢昳ㄱ㕡㡦㠴收㐱搰㑢ㄱ㕡㡦㠴〶㐳搰㡢ㄱ㕡㡦㠴㈶㐴搰攷㈲戴ㅥ〹㉤㠹愰ㅦ㡢搰㝡㈴戴㉤㠲㕥㠸搰㝡㈴戴㌶㠲㥥㡦搰㝡㈴戴㍦㠲㍥ㅢ愱昵㐸㘸㤱〴㝤㈶㐲敢㤱搰㐶〹㝡㉥㐲换㐸〶㘹慡㠴捤扦㡢㠲昱ㅡ挱㥦〰ㄴ㜳㕦〵摣戱㥣㤲挸ㅤ㝡㝣慦愳慢愲昰昱ㄹ挶ㅢ㔱㠱㌷㡡㤲㈷㐳㥥㠹㠶㑣㙦愳㤰捤㉢㑡愳㔴㥣㡣㉡㑥㐸㠵㔲㤴㔰愹㤸㡥㉡挶㠱㌰晥ㅣ㐰㔱〲㌹㈷攳㉦㜸昷㉡〱敦晥㌲㉡挸ぢ戹〶搲晤㤳㉤㉦攴扡㐸挵㜸换ぢ戹㔶㔲昱㠹攴ぢ晦㥡て㤵㠹愱搰攴㌴つ㜲㠲戲摥㝦㡢㐲㝦搷〰挷㜶ㄱ扦散㌵㔵㝡慡晣搴㔳㙦て㜴て摦搶晤昸㈷晢㕥㝣敢敦㝦昴挲て㉦㥤昸昱㑦㕥㝡改㠷晦昶挲㥢㍦昹摥捡㠹敦㝦攳ㅢ㝦昳愹㤷摦晣搱㝥晢㤵散㙢㙦捦扤昲散搸㤵㘷㥦戶捦㍦㜰敡搹㈷㉥㍦㌶戶㜰搳㐸㔷㔷㑦捦扤㐳㝦㜷敢㝤㠳捦㍦晤扡晡慢㝦㍡攸㈹㤹㉥㕥搰㍣っ㑥㕢㠶昱㝤ㄴ㌰っ㡥昸㝤ㅤ〶愷㉢ぢ昵㘸戴㔰㤳㐰ㄴ攰㡣㜳〰㔲昱㐸㜳㐵敦晦〰戸愷㔷㤴 | F30: 㜸〱敤㕣㕤㙣ㅣ搷㜵摥扢攴㉥㜷㤶愴㐸㡢戲㘵㌹㡥捤挴㜱晣㐳㤵ㄶ㘵慢戶搲㉡っ㝦㐴㠹〹㈵㔲㈲㈵搹戵ㄳ㝡戸㍢㐳㡥戴㌳㑢捦捣㔲愲攳搶㑥㥡㌴㍦㙤搳挰㐰㤰㍡㜱㘱㍢㜹㐹㠱戶㐰ㅦ攲摡愸摢愲㘸㡢ㄴ㠵〳ㄴ㐵晡㔰愰て㙥㔰戴て晤㠱㠰扥〴㐵㠰昴晢捥㥤搹㥤㕤㙡㠷昴摡㙥改㠲㘳敦攱㥤㜳敦㥤戹昷㥥摦㝢捥ㅤ㘵㔴㈶㤳昹ㄹ㉥晥攵搵捤挲敤㡢㥢㐱㘸戹愳㔳搵㑡挵㉡㠵㑥搵ぢ㐶㈷㝣摦摣㥣㜳㠲戰ぢつ昲换づ敡㠳摣㜲攰㍣㙤ㄵ㤶㌷㉣㍦㐰愳㕣㈶㔳㈸ㄸ㔹搴昳㈱晣つ挶㌷〶㝢昵㜵〳㉣㑤㑤捥慦㕣挶㔳ㄷ挳慡㙦ㅤㅥ扥愸晢㥥ㄸㅢㅢㅤㅢ㍤晡攰昱戱搱㈳㠷㠷愷㙡㤵戰收㕢㈷㍣慢ㄶ晡㘶攵昰昰㐲㙤愵攲㤴㍥㘵㙤㉥㔵慦㔸摥〹㙢攵挸㠳㉢收㐳㡦㡣㍤㜴散㤸㝤晣昸㈳㝤㜸㜵收散搴攴㠲㙦搹挱扢昴捣ㅣ㠷晣搰戴㔵㜲㌸㌷换昲ㅤ㙦㜵㜴㙡ㄲ晦㈷挶㡦扢㠷㐷ㄷ搷㉣㉢攴慢㉤摦昲㑡㔶㘰愰㘳慦㍢ㄱ〴㌵㜷㥤㡢㘷戸㌳㤸㙡挹っ挲㥣㍢㘵㔵㉡㠶ㅢ㍦戵攰捥㘳敤㉡收㘶㥦扢㘸㜹㠱ㄳ㍡ㅢ㑥戸㤹㜷㤷昰愰㜲扦㝢㈱戰捥㥢摥慡㜵搶㜴慤㥣㝢慡收㤴扢昵㤵改扡㈷㝥㐴㜲㘰㌲晤搱㠹挰㥤㕡㌳㝤ㄹ㔱挰㠵㐹㘹㍢攳㤷㥡摢摥搵晥戹ㅣ扡扣㠱捦扣扢㝤㍢搴㕣㌴晤㝡换㤱昶㉤愳挹㌷㡦攰㠱昶敤ㄳ㙢搴摣攷扥昶㝤㘴㈹㥢㕢慢摥㠸扦㘵㐵㌱ㄹ㈳㑦搰㐳㔰㈰㈰〱㡤㈲㐱㉦㐱ㅦ㠰敡晥㉦㐸㐹戲㈳慢戲换㘶㜶㜹㈵扢㕣捡㉥㤷戳换㔶㜶搹捥㉥慦㘶㤷搷戲换㑥㜶昹㜲㜶昹ち摡挴㔷愱愷㈷ㅢ㕤捦㝥收敦扥昶搸戹敦捤扣戱晦㍦㔶敦晥㠶昳摦㝤晢搰攸㕣㌴愸㘹摦扣ち㔶㙢㜰昱搱搱㈳晣㙦㝢愹㠰㔰搸挷散㠷敤戱戱昲戱㈳收㠳㘶㡥搳㑡㈱㝥ㄳ愳っ愲㙤㥦㝤挹昱捡搵慢㐲扢摢㈷捤挰㙡㉣摣㐸㔴㌷㔹慤㜹攵攰〳㌷慥㕣っ捤搰扡慤戵慥昱㤰㉤摤ㄶ㈱㔶㔶㈰敦扢愳戵摢㐵戳㔲戳㈶慥㌹扡晡㠳㉤搵敥㠲㕦㕤㘹㕦㍢攳㕢㑦搵㙢户㡣㘸〲㑡㙤㐳㥥扤㘵㤶扡㑡㡦㙢㜸㙡慤ㅡ㔸㥥っ㙦挴㕤㜰㑡㔷㉣㝦搱愲㑡戴捡㌲搵㥢㔹ㄵ㐹晤挸扣㠷㠹㐲㕡换ㅦ㑥㘲敤㤳搷㐲〸戳㔵挶㜸搷㉤㍦摣㕣㌲㔷㉡搶㉤㑤㑤昴㍢㔱㜱愸〹㍤㔳㉤搵㠲愹慡ㄷ晡搵㑡㜳捤㐴㜹挳㠴愶㈹㥦愹㤶慤敥敥㡣㈸〵㈸摣慥㉥愵㌲昷户㤷〵㈱㐴㠲挴ㄴ攴㕢㥢搹㙥昴㍣㘶㠷㔹㔴㉣昲㘴昶㈳摢㍣㡣攳ㄵㅤ㤳㈲㠱㠹㌹搱㝥昰愵昷㙥昳搸㍡攵摥摢挶搹散㔰㌴晢㤳ㅢ㤶ㄷ㥥㌶扤㜲挵昲㔳慤㥦攲㠸㡣〱㠰摣㜵㈸㠴戶慢㐷㔳愷慥愹捤摣㔵愷ㅣ慥攵搷㉣㘷㜵㉤〴づㄶ戲㔰攰搲㙥戹㡣㥢㠰㌲昶ㄳっ〱ㄴ㡢㤹晣〱㌶捡ㄷ㜱㘵㜲搴㑥㈹戲摣愴挸搹慦㐹㤶晢散ㄹ愷ㄲ㕡㕡㈹て搸愰㠸戶㙡㐲扥㝥戲愸㙦㤶戴挱㌸㘰㑦㠱㑢㑤挷ぢ㌷ㅢ㜲扢㐵㑡㌴ㄳ敤改㠲㕤愷ぢ愸ち㥡昵㐱㡡慣㠱㘹㕡戴㐱㝡攳〴ㄳ㔱っ㔲㉣㍢㥥摣捣㘴㙣㥦愲㈳搰㍥挹㠴㙣㝤愴扤㡥㈰戳㙦㘵㔲㜶㙡㉢㡦㝢摡散㐶扥扣搶㘶㌷㘳攱㡣㕢〸づㄲ摣㑡㜰〸㐰晤ぢ㌴ㅣ戵ㅣ捡捤㤷昱〱摣ㅢ户ㄳ㝣㄰〰晡挹愰捥㠹㔴ㄵ㝤愸㥤昸㤱㙣搷て㍦㔹㥣㘲慤㡡攸ㄹ搷晤捣㝥㔷〸ㅤ㜹㥤扢挳搶㜶㡢㡤晤㘸㝢摥㑣㑥㠷ㅣ㤹搲㌴㌹搷㙤㥡㈶ㄷ㠲㑤㍢戴㕢㜷愲慢㌱㑣昰㈱㠰愲昱㘱㐲ㄸㄷ㍡扣㍢昳攸改㔲扥㉦摣㈲敤っ㜵㘸攰㈳㐶收ㄶ㈰㐵挹㙤搹扥散昹搰㜴〷㐷散昷扤て㝤戸扤㝣㐷㐴㙦戱㥢㝢㜶㠷昱愲户改㐵摦〵昱㔲晦搸搶挶摣㡤㙡攳愳〴昷〰戴搸ㄸ敥扥摦㙥愴㐰摣㘲㌷㐱戹晤㡣扡㠸㤷扢戴戹㙥㠹〵敡戳㤷㑣㝦搵ちㄱ挱㤸㥤㠶㉦㕣昵㝤慢㠲㑤㙤㔹㄰摣扦ㅣ㙣㐶〶㌳㝥搵㈵㝥捦㐷づ摥ㄷ㠶愱扢㍢摢㤵㘹昱㤱㔳㝣捤㐴捣㈹挱㌹戴挱て戶㔷ㄲ㠹㑥捤散挵㝥改晢换㍤㑤搲㠱㈶戹て换㙡摣て〰㉤愱晥扥慤㐶㌹捣㘶㍦㈷捤㥡㍤㔶㐶昸㔲㜶㈷㉤㌱挴㉤㝡愴㔷〷㙣㈷ㄱ㍦〸晡摤㐵挷慤㉢㡢㕥㜷挱昲㑢㠸㉤㌸ㄵ慢愸挳戲㔴㌵㝢扡攲㝤愲㉢扡扡戶散愷㔳攲㙢挲㈷㉤㕡㈲㔵摡㔳㉢㔳昶攲つ愶㘲ㄸ㤲㑡㈵㈵㌴㔴搷㐰攴㍣戶摤㔳㌱ㅤ愸㤸〷戰㜰挶ㄱ㠲㌱㠲愳〰戹ㅦ㐲搳散㜴攱㤹づ敢搹㘰㐸㝢㜹㌹㔳㈰ㄹ㈴㐴昸㘶㕢㘵㜵㡣慦昹㜹㠲㠷〱㕡摣ㅦ〶㈰㔳ㄸ㔱㐸㥥㘰㐴㐹㘳搸ㄷㅤ敢㉡㜹㘰㥦㡤挴搲㔴㉤〸慢㉥㌳㑢晤昶㜴昵㙣㌵㥣㜶㠲㜵㘴愲㠶散愸㜰㘹捤昲挰㕤㍥㝣㥦ㄶ㕣㜵㝤摤㉡ㅢ昶㘲戵〶搵㌶㍢扤ㅢ㌶收㔸づ昸㤲戲㌷捦㉡㕣㥤敤㡦昱〸㠵㤵㤶㜸㉢愳戱㍢㡡㝥㜳搳㌷搰㔸搱㈵㈷慣㔸扤戶ㄶ㍡㤶ぢ㌶㔶ㄱ㤹㠳㜲㡦扤戴收㕢搶㜴扦㝤捡㜷捡ㄵ挷戳㐸っ昸㤸㑣搶捤㔹慢挸ㄲ㉣㔴㤹〳慣㝡晤昶㤲㙦㝡挱扡挹㠴攲收晥愶㍢㐹㡢攴散㐹挷ぢ昰ㅡ愱㈲换〳昶攲㕡昵㉡㌲戶㌵搷㍢㘵慥〷扢㠲㉡㘴㝡㝤〹㘹㔴㔶㘵戳慡㤰㉤㜴㑡ㅦ㙥挸㌳ㄹ捡㕥㌷㠱搰㉡㤳㘳捣㍣挵㝡搳慦㡦㜲㌴昴搳㌹愶㍥㘴㡦敡挸慥㔴㉤㑣㐹㌵㡥戳捦挷〰㍥㜹敡挲㙣㈳㌳昷㡥㜲搶㌹㐶昹㔳㜴扣戰㐵㍤ㄱ挲ㄸ摤㍥捤㉡挴㤱㜳㈰㠱愰㌸敦㕡搹慦㘸㑢ㅢ㜲摦扥㐶㜱〶㤹愴㍥㝢捥㕣戱㉡挸㐷扢㘶戸㑦摦搰㡤㜵捤㑡㄰搵㑤㔵㕤搷㈴㙢㤱㉤ㄷ㑢㈶㌹㜸愲ㄶ㔶捦㌸㥥㘱〳〸晦㐵㈸昳ㅡ㔰收㌵㐱昵搹攷㤹ㅡ㤴㌲㥦㔵㕤㌵㝤㈷㕣㜳㥤㔲㠱㌷㑣摦敤ち㥥㠴㤰㔳昳挶㔷慣㌳㠶㕢扣昹ぢ㜰搹㠲㔱㤰㝢ㄴ㝡㤴㑢㐷昲㠳㜳戳㉡㡦晦㔴㠷㠱㈵㈸ㄸ㠹㤴ㅡ扦㠸愷攵攴㜴〴㔴㡥㕣搷攳㌳ㄸ搷㥦〵㐶㉢㈱㔲㍤㠵㐵㄰ㄵ㑣㈸㜹㠶戸昳昶〵捦〹㐱㍤㔲㙣挶〹愷〳㤰ㅣ〰㐵搹摥摥㈶㔴㑤㜴ㅡ愹㕢㠵㍢户㔶㌵㤹㠹㍢戶搶㈷敤挶㐷㙥㔰慤㉤㑡挲㤰㙣搷㐸㉣换つ挶戸㥢㑣㡤ㄲ挳ㅤ㕢ㅢ㤵ㄶ㌶㙤慣㍢戵挸㍢㌰㑣挲㌳ㄹ攳攳挲㈸㐸昴㐶㌶㡡㌱晢㜴昶㐸㘴㙣攸〳ㄴ㘹愷㌴慥㍦㑡〹捥攲搸㐹搹㉡㐶㜷㤰敦㝤㔱㜱扥ㄶ㌶搵㤸搷㠶愲㥡㠹㑡㘵摥㠳㤷㔰㌲晤昲㉥ㄱ㘹捣㑤㕢ㄸ㤱捥㑥慤扦㕥摥㠴㈰㐶㘲挸戴㐸㑡ㅣㄸ㘲〸攱㑡㘴㔴改㥤昵㜳愹敢攸〲敦捥㔸愶㈷ㄴ㔸っ换搳搶㠶戸㘱つ㑦㝥㐸㍡搴㜷㡢愲㐷つ㝢㘲㈵㠰㐹て愹挷愳㤲〸戸㘱㥦㘷㔸ち㠷ㄸ愰㜶愳搲㐲㈹㐴㙡户晥〰敥っ㜶て㜵戰㈲㍡㜵㐲敦㡣ㅡ㌴㥦挲戸捤㤳愰散㜴㐸㔱㈸㔲㕢慥晦ㅣ㔷摦㝡㠱搷敦㡥㘷攲㐲㈴㐴㑣㜷愵㜸て㈰㙥㌲㌳㐹㈹ㅡ㡡ㄳ收㕡戳㠹搲敡㡢㜱㜴㌱晡改昲昹㈱㑥昱㌰㤷㌵㐰戱愹攰㥣㕢攸挰㥡㔶㌶昷搹戳㕥愹㔲㉢㕢㘲㡡㘳㕤㉤ㄶ㜹㔷搰㑢㡥〰㙡㘹㑡㔹㤷㘸㔱㘶戱㤵攲㤴㐹愴捥晤㙥㘳ㅣ摤㐵挹攱ㄹ摡昴㌱〱㤹ㄲ㤶㤳㠴搸㤶㜳ち昴て昷㌷づ㌰挸攱㌹愸戴㉤㈸敡戲㌹㥣挷慢㘷㤱㐵摡ㄲ捤收慡㜳㔵晡散〹搴㘹㐷愳㜶〵㡤㌰㑦慤昰昲㜹㌸㈳ㅤ㑡〷ㅦ㤲戹ㅥ㘵㜷慦㍦㉢户㤹敢㈰㠵㔰㐰㌱挷换㕤㔰〶慢ち㐱愲挳㥤㙤㜸摤㡡搹㕦㝡摥挶〴㠰㘲ㅡ㤸づ㉤㕡㙡〷㘷ち攵敤ㅤ㥣㍢搱㉡㈵㐳㥡㑣愶㌲㐷㌹㠴㠰㍤㠸〶㘹攲㐶㝡愹ち㈳ㄴㅥ㤰㠳㘱昱搹挴ㄱㄷ㕢愰慡㝦㑢ぢ㜲挱っ㜱晣挵㍢搴㠲㥥㈸㤷改敥㈲㍥户㉢愸㡡愳ㅢ摡ㅤ㍤搰㜲㈸㑢收㐴晦敥慥㤶㡡攸戰攰搱改搱搳㘶㔸㕡㕢っ㌷昵挱慤㑥㔹㈲昷〶攲ㄱ㌷㝣㍢㝤收㙥㡦〷㔱㌷戸昶挵㉢㕥昵慡㈷攳捡〵㍣昵〷づ挱ㄱ捡ㅥづ戲㤸昹ㄹ晥㤳㉢㥢挹晤㌱㥥戸㤳㘱昳〱㡤〰〹㥦㈳㔷搱㤸挱㕦㈶愹㠷昱㌷㠵㔷攰扦搷㑦づ㤰㔷づ戴昰㡡㈸㠳㍤㘶昱㔶摦㌵㘶㔱慦㠳戴㘴ㄸ㄰㍣㍥㈴㤲捤愸搷㜰㐳愲㠳〶㈰㥣㌱㑢〸昲㝤〸㝦㔳挸㈷ち㍤㍡敡挱㠳㈱晦㝦㈸ㄵ㑢昵つ挵敡㝦㐱愸搵慢㈰㠶㤰〹㌴愹换愵晡㝥㌳㤹收㌴㤹ㄴ㡦㠴㠸㉣㥦㐱㈱扥㜲㑣搵扥慤愴㌸攷戵户ㄹ㝤捦て晦晥ㅦ㙥㐶攷㈳收㄰㝦つ㘹户扢㜱㕦㜷ㄷ扡戶戸ぢ㑣攴㡢扢戰㠰㠲㘲㐶㕦扢ぢ㔱㍣攴㍣㄰摢扢ぢ捣昳愵㌸㠵㠹戴㙢㈲挴挱摤搸㉤㉥㘳㘵愷㜱〸搷ち㤰摢㠷〱ぢ愶㄰㥤㍡戸ㄵ扤㘰晡愶㝢㐸昰愷㝣ぢ㠶捤㕦挲愹㙥改挲ㅥ户摤戰㐶㍡摤㈰㙥ㄱ㐷摣昷㘲㉢㍢㍢换づ㑡改㑢㠷昲㔵㐱攵摦㐱搴㐴㜱て㤱昹散㠱㍦㌸昵㑦㑦㝦㘱㥣㈷搷㈲㕥捤㌱㔵摣㐹晡㥥㝥〵ㄲ扣㠹㐳㈳㌷昳㈳㥤㌳昸㕣挹㔹慦㔸㤳愶㉦ㅥ㔱㘰戸㜱㔱㌳㕥㠲㌱㌵昳敤〶㜷ㄳ㘷㈰戴扢㌹摡ㄲ晡㤴㡦㥣㈴㕣㌸㥡ㄸ戸挴昷攲ㄴ愲㙡㙢捣㍡昴㍣㜳扦て㜳昴㌶〷搲散㌱㜲〷捡㑢愹摦㡢敤㥤㐶㘴㌲挷㘰搱昴戶㔲昱〸㐰慣愵㤰㡢㈰㠷㈴㌷㌵㍣ㅣ㈰㕡敡〲ち戹〷〰㔲戲㙣慤改㕥挶〶昶㤴㠰㔵㍦〰搸攱〷㉤㔸㐵㔰㌱㡥换㜷扡扢㘵㈸㈰㌶㑤㑣摢㡡㑦㜳ㄱ〵搹挸㄰㌱ㄶ㘳㉦愱㄰㕦戹愳㈸敤㌸㌴挵㤷昴扢㍡〹愷〵㍢攷㌲敥㔶㜴㑦㝡㌵㥣〲㠱㥤挹㡢挱昰昶ㄳ㡤捤愹攴敢㜴搳愲㐶ㄱづ攸㘲扤㔳㙦㔴〵㥢攵ㅤ挲づㄵ㠹㐰㝥㌵挴晡㤱挶愳㙦㙥慤愱㡤昳㝡㌰㐱晥攰㝦摤㤱㈲搸㜸㉢㈵〶ㅡ㜶㐷慤ち晡愸昸愳攸挲㐹㘷㤴搱㈸捡扤㘲扥㍡㤶慣慥散ㄶ晢捦㑣戶㐸搶㘳散捤㤴㜶㤳晤㝦ㅣ㠸㙤敤扦㍡捥扥昸ㄹ㑦㐴〵摥攴㤸㑢搹㌶㝤挳ㄵ㐱㤴ㅢ㠹ㅣ搹㈴ㅢ㔲㘴晡㕢㤷ㄶ昱㈱慢慥ㄶつ㡥ㄸ㔸㜷敢㌱㠹㝡㕦晡戶扤㙤ㄵ㈰昳㐴戹敦㐲〵戵敤摦慣户攲㥤㙥晥㌳攸㜸攰㡣㔳昲慢㐱搵づ㠷ㄷ㤱〰ㅥ收㜷㘸㌶㝣㥥〹昵㑡慢㔲扢ぢ㉢搱昷㈴晡㥣㥤㠷挲㍥㙢㠵敦㔶㕥㤲㔹㠶㥤㘵㌵昸㑤搲㘰㈲搵㐴敢㄰摣㘴㥦慢㤹ㄵ㝣挶㍡㡦戸㘷㐸搴慥㌰㜶㍡晡摣㝡㕡㠳㑢㠷昳㕡㥦㐲㙣挸慡㡣㈲㔱㈶㔳㜸晣搳㕣搷搶㌵㘸㙥ㅢ捤㉤㘰换捥攲㙦挵摣㑢愰改捥摥搲捣㌲㝣㈷扦㑥㉥ㅡ㉢㠴搸㕣㡦攳敦捥㠳戵㝣摡㄰昸㍣晡戸㥢㐱戱㤱ち㐲㘹㍢挸㠴㤷搰㔵㑤㄰攰㘷㤴愳〲㙦ㄴ㈳㝥ㄴ㐵昵㙤㑣㡢〲㠰㌲昶㠰〰敤戹晡〵㌴搳ㄱ〴㌶挶㐵慥㔶㌳㈸挸昳搷㔰愰摦挶㥦㘲㈰㐱戰㑥ㄲ换㝤慢㘰㉦㈷戰㠳昱收㔵㜱㤷㐲㠶㉥慡㙦攰㔵㉦攱愷ㄷ慥㐲ㅣ㜶㉤戲ㅢ㐱搹㠸㝢愰㥣㔱摣㡤挸㔴㥥㐷㠷晡㔴慡挰戶㥦捡搷搱㜴敢㔴攸㐷挸昰㤲捦ㅦ㡣敤㤰攱愳摡〸〸㐲㠲ㅡ挰㘰㙣㡥〶愸㘱愹戶昲㍡㘳昱㍡㠹㡣敢㙦愳扦㙦㡤晦昰㑤㕥晦㍥慥㐴愷愲慡㜹ㄶ搴愹㌲㡢慦㈴㘷㜱つ搸昶戳昸搲㡤㘶㌱昸〴晡㜰㈴挶搳〰晤㕤㡡㙣㈷戳晡㉣ち㕣㔰晥㔴㈹挶㌶捤㤵㍣㈲㝤㝦ㄹ㠵晥慥㐱搲㤴〱ㅥ攳㔷〸㥥㈵㜸㡥攰㜳〴㥦㈷昸㔵㠰晥散㈰挹㉣つ扦㐰攴ㄷ〹㝥㡤攰㑢〴㕦㈶昸ち〰ㅡ㤲昲搲昰慢㐴晥㍡挱㙦㄰晣㈶挱搷〸㝥ぢ愰㍦慢㐸㜴ㄹ昶搷㔱㠸㠷㥤㈳つ㔲㍥㔷ㄲ㉦㡦㐷㍢昹㡡扣づ㉦攷戵㙤㉦戸㔱㕣㜹㔷㘸㌸㑣㠹摦晦戶㌵㑣昹づ捦㉣愸㙡捣ㄳ愷㑦㐷㔱扤㑣㌶捡愲㠱㈷㜵戲㠰㍣捣㠵㔴㕥摣昸て㕦㙤〴㥢㔰㠱ぢ㡣慢ㅢ㤳搷愵戱ㅢ㌷㍥㡡敦捣愴つ㥥慣慦户攲挶㤴〹㘹㕣㠹ㅢ晦摢搱㐳昵挶戱〸攸㈷攷挸㥦㈹ㅥ扢散㘱ㄲ摦㥣て愰㜹捥愶ㄷ搰㙢㙢㌴昵扦㈴挳㉢攲〷昴攱㜸㡢㡦慦扥攷㜰㕡ぢ㠷㕡㘰㉡昴㍦晥㌰㡢㔳㕣搳㘶㘸攲愳敥つ愴捦㝤㐳敥搸㌹㙦捦晢㐰昴搸戳〱㜶㠶攵㕤挵㈲㜰㙡扡昵晡㙥㤳㘶㐸㜱㠰ㅢ敢ㄱ愷晤戲㍣ㄵ搳㤹〹㤴㔴㔱户扡ㅣ㔳㌶昳㕣㠳㘷㡣㙦㠲㌸搰搰㠰㉣ㄸ扦つ愸㔳㑢㍣㝦㥤ㄹ愴敡ㄱ扤昲㉤㔶㝣㥢攰㐵㠰愲愲㥥㈱ㅦ攴㝦〷㘰㈰晥愷㌷㠶㌷㈴敡㤳㔵㉢昱换㤲㙣㘴扣挴づ㉦〳㜴㈱㄰慤㈲㈶㉣ㅡ慦〰㤳㜸㘹㡥㍡敢ㄷ摡㝢搵摣㌴挷晦ㅣ〰ㄲ愴㑤摦晤㥦挴㜷晣㥢㝣㜰ㄷ晥ㄹ㤳㥣㙣〱扡戳ㅦ敢散㔹㘴㌴㝡敦昲晢㌴㈶昴づ㥥挳〵㙥攴㕤昸㐴㙡挶愲愲㘶收㜴搵ㄳ㜸㍥摦㐱攷扥愸㥥㡢搱㡦㐷㘸ㅥ㐲㈹慡捦挵攸㕦㡡搰〷〵晤昹ㄸ晤㔸㠴扥㔷搰搴昰昲散㐷㈳昴㝤㠲愶愲ㄷ昴愵〸慤㐷昲挵ㄸ㝤㌱㐲敢㤱搰ㄸ㐸敢ぢㄱ㕡㡦㠴收㐱搰㑢ㄱ㕡㡦㠴〶㐳搰㡢ㄱ㕡㡦㠴㈶㐴搰攷㈳戴ㅥ〹㉤㠹愰捦㐵㘸㍤ㄲ摡ㄶ㐱㉦㐴㘸㍤ㄲ㕡ㅢ㐱捦㐷㘸㍤ㄲ摡ㅦ㐱㥦㡤搰㝡㈴戴㐸㠲㍥ㄳ愱昵㐸㘸愳〴㍤ㄷ愱㘵㈴㠳㌴㔵挲收摦㐷挱㜸㤵攰㡦〰㡡戹㙦〲敥㔸㑥㐹攴づ㍤扥搷搰㔵㔱昸昸っ攳昵愸挰ㅢ㐵挹㤳㈱捦㐴㐳愶户㔱挸收ㄵ愵㔱㉡㑥㐶ㄵ㈷愴㐲㈹㑡愸㔴㑣㐷ㄵ攳㐰ㄸ㝦〲愰㈸㠱㥣㤳昱愷扣㝢㠵㠰㜷㝦ㄶㄵ攴㠵㕣〳改晥㠹㤶ㄷ㜲㕤愴㘲扣攵㠵㕣㉢愹昸㜸昲㠵㝦挱㠷捡挴㔰㘸㜲㥡〶㌹㐱㔹敦扦㐲愱扦㙢㠰㘳扢㠴㕦昶㥡㉡㍤㔹㝥昲挹㥦っ㜴て摦搶晤攸㈷晡㕥㜸敢㙦㝥晣晣㡦㥥㌸昱慦㍦㝤昱挵ㅦ晤昳昳㙦晥昴㡤㤵ㄳ㍦昸捥㜷晥昲㤳㉦扤昹攳晤昶换搹㔷㝦㌲昷昲㌳㘳㔷㥥㜹捡扥㜰晦愹㘷ㅥ扢㝣㙥㙣攱愶㤱慥慥㥥㥥㝢㠶晥晡搶㝢〷㥦㝢敡㌵昵攷晦㜰搰㔳㌲㕤扣愰㜹ㄸ㥣戶っ攳〷㈸㘰ㄸㅣ昱㝢㍡っ㑥㔷ㄶ敡㤱㘸愱㈶㠱㈸挰ㄹ攷〰愴攲攱收㡡摥晦〱㡥㉣㔸㡤 | G30: 㜸〱敤㕣㕢㙣ㅣ搷㜹摥戳攴㉥㜷㤶愴㐸㡢戲㘵㌹㡥捤㐴㜶㝣愱㑡㡢戲㔵㕢㙥ㄵ㠵ㄷ㔱愲㐳㠹戴㐸㐹㜶敤㤴ㅥ敥捥㠸㈳敤捣搲㌳戳㤴攸戸戵㜳㙢敡戴戹挰㐰㤱㍡㜱㘱㍢㝤㉡搰ㄶ攸㐳ㅣㅢ捤〵㐱㕢愴㈸ㅣ愰て改㐳㠱㍥戸㐱搱ㄶ㐸㔱〸挸㑢ㅥ〲愴摦昷㥦㤹摤搹㈵㜷㐸慦敤㤶㉥㌸昶晥㍣昳㥦㜳㘶捥㌹晦昵晣晦ㄹ㘵㔴㈶㤳昹ㄵ㉥晥攵搵捤挲慤ぢ敢㐱㘸戹愳㤳搵㑡挵㉡㠵㑥搵ぢ㐶挷㝤摦㕣㥦㜵㠲戰ぢつ昲㑢づ敡㠳摣㔲攰㍣㘳ㄵ㤶搶㉣㍦㐰愳㕣㈶㔳㈸ㄸ㔹搴昳㈱晣つ挶㌷〶㝢昵㜵〳㉣㑥㑥捣㉤㕦挶㔳ㄷ挲慡㙦ㅤㅡ扥愰晢ㅥㅦㅢㅢㅤㅢ㍤㜲晦戱戱搱挳㠷㠶㈷㙢㤵戰收㕢挷㍤慢ㄶ晡㘶攵搰昰㝣㙤戹攲㤴㍥㘹慤㉦㔶慦㔸摥㜱㙢昹昰晤换收〳て㡤㍤㜰昴愸㝤散搸㐳㝤㜸㜵收散攴挴扣㙦搹挱㝢昴捣ㅣ㠷晣挰㤴㔵㜲㌸㌷换昲ㅤ敦搲攸攴〴晥㑦㡣ㅦ㜷て㡥㉥慣㔸㔶挸㔷㕢扥攵㤵慣挰㐰挷㕥㜷㍣〸㙡敥㉡ㄷ捦㜰愷㌱搵㤲ㄹ㠴㌹㜷搲慡㔴っ㌷㝥㙡挱㥤挳摡㔵捣昵㍥㜷挱昲〲㈷㜴搶㥣㜰㍤敦㉥攲㐱攵㝥昷㝣㘰㥤㌳扤㑢搶㔹搳戵㜲敥愹㥡㔳敥搶㔷愶敢慥昸ㄱ挹㠱挹昴㐷挷〳㜷㜲挵昴㘵㐴〱ㄷ㈶愵敤戴㕦㙡㙥㝢戰晤㜳㌹㜴㜹〳㥦㜹㘷晢㜶愸戹㘰晡昵㤶㈳敤㕢㐶㤳㙦ㅥ挱㝤敤摢㈷搶愸戹捦㍤敤晢挸㔲㌶户㔶扤ㄱ㝦换㡡㘲㌲㐶㥥愰㠷愰㐰㐰〲ㅡ㐵㠲㕥㠲㍥〰搵晤㜳㐸㐹戲㈳慢戲㑢㘶㜶㘹㌹扢㔴捡㉥㤵戳㑢㔶㜶挹捥㉥㕤捡㉥慤㘴㤷㥣散搲攵散搲ㄵ戴㠹慦㐲㑦㑦㌶扡㈶扥晣昰ㅤ㕦晡搹㝦㍥昲摡㜷慣㝢ㅥ㍦昸挲捦晢昶愰搱愳搱愰愶㝣昳㉡㔸慤挱挵㐷㐶て昳扦慤愵〲㐲㘱ㅦ戵ㅦ戴挷挶捡㐷て㥢昷㥢㌹㑥㉢㠵昸㑤㡣㌲㠸戶㝤昶㐵挷㉢㔷慦ち敤㙥㥤㌰〳慢戱㜰㈳㔱摤㐴戵收㤵㠳て㙤㕥戹㄰㥡愱㜵㑢㙢㕤攳㈱ㅢ扡㉤㐰慣慣㐰摥㜷㕢㙢户ぢ㘶愵㘶㡤㕦㜳㜴昵㠷㕢慡摤㜹扦扡摣扥㜶摡户㥥慥搷㙥ㄸ搱㌸㤴摡㥡㍣㝢挳㉣㜵㤵ㅥ搷昰攴㑡㌵戰㍣ㄹ摥㠸㍢敦㤴慥㔸晥㠲㐵㤵㘸㤵㘵慡㌷戲㉡㤲晡㤱㌹てㄳ㠵戴㤶㍦㥡挴摡㈷慦㠵㄰㘶慢㡣昱慥㕡㝥戸扥㘸㉥㔷慣㥢㥡㥡攸㜷愲攲㐰ㄳ㝡扡㕡慡〵㤳㔵㉦昴慢㤵收㥡昱昲㥡〹㑤㔳㍥㔳㉤㕢摤摤ㄹ㔱ち㔰戸㕤㕤㑡㘵敥㙤㉦ぢ㐲㠸〴㠹㈹挸㌷㌷戳摤攸㌹捣づ戳愸㔸攴挹散ㅤ㕢㍣㡣攳ㄵㅤ㤳㈲㠱㠹㌹搱㝥昰愵㜷㙦昱搸㍡攵摥摦挶搹散㔰㌴晢㤳㙢㤶ㄷ㥥㌶扤㜲挵昲㔳慤㥦攲㠸㡣〱㠰摣㜵㈸㠴戶慢㐷㔳愷慥愹昵摣㔵愷ㅣ慥攴㔷㉣攷搲㑡〸ㅣ㉣㘴愱挰愵摤㜰ㄹ㌷〰㘵散㈵ㄸ〲㈸ㄶ㌳昹㝤㙣㤴㉦攲捡攴愸㥤㔲㘴戹㐹㤱戳㕦㤳㉣昷搹搳㑥㈵戴戴㔲ㅥ戰㐱ㄱ㙤搵㠴㝣晤㘴㔱摦㉣㘹㠳戱捦㥥〴㤷㥡㡥ㄷ慥㌷攴㜶㠳㤴㘸㈶摡搵〵㍢㑥ㄷ㔰ㄵ㌴敢㠳ㄴ㔹〳搳戴㘸㠳昴挶〹㈶愲ㄸ愴㔸㜶㍣戹㤹挹搸㍥㐵㐷愰㝤㤲〹搹晡㜰㝢ㅤ㐱㘶摦挸愴散搴㔶ㅥ㜷戵搹㘶扥扣搶㘶㌷㘲攱㡣㥢〸昶ㄳ摣㑣㜰〰㐰晤㍢㌴ㅣ戵ㅣ捡捤㤷昱㈱摣ㅢ户ㄲ㝣ㄸ〰晡挹愰捥㠹㔴ㄵ㝤愸敤昸㤱㙣搷て㍦㔹㥣㘲慤㡡攸ㄹ搷晤捣㝥㔷〸ㅤ㜹㥤㍢挳搶㜶㡢㡤晤㔸㝢摥㑣㑥㠷ㅣ㤹搲㌴㌹搷㉤㥡㈶ㄷ㠲㑤㍢戴㕢户愳慢㌱㑣昰ㄱ㠰愲昱㔱㐲ㄸㄷ㍡扣摢昳攸改㔲㝥㈰摣㈲敤っ㜵㘸攰㈳㐶收ㄶ㈰㐵挹㙤搸扥散晡搰㜴〷㐷散て扣て㝤愸扤㝣㐷㐴㙦戱㥢扢㜶㠷昱愲㜷攸㐵ㅦ㠴㜸愹㝦㘹㙢㘳敥㐴戵昱㌱㠲扢〰㕡㙣っ㜷摦敦㌴㔲㈰㙥戱㥢愰摣㕥㐶㕤挴换㕤㕣㕦戵挴〲昵搹㡢愶㝦挹ちㄱ挱㤸㤹㠲㉦㕣昵㝤慢㠲㑤㙤㔹㄰摣扦散㙦㐶〶搳㝥搵㈵㝥搷㐷づ㍥㄰㠶愱扢㍢摢㤵㘹昱㤱㔳㝣捤㐴捣㈹挱㌹戴挱昷户㔷ㄲ㠹㑥捤散挵㝥改晢换㕤㑤搲㠱㈶戹〷换㙡摣ぢ〰㉤愱晥愹慤㐶㌹挴㘶扦㈶捤㥡㍤㔶㐶昸㔲㜶㈷㉤㌱挴つ㝡愴㔷〷㙣㈷㄰㍦〸晡摤〵挷慤㉢㡢㕥㜷摥昲㑢㠸㉤㌸ㄵ慢愸挳戲㔴㌵扢扡攲〳愲㉢扡扡㌶散愷㔳攲㙢挲㈷㉤㕡㈲㔵摡㔳㉢㔳昶攲つ愶㘲ㄸ㤲㑡㈵㈵㌴㔴搷㐰攴㍣戶摤㔵㌱ㅤ愸㤸晢戰㜰挶㘱㠲㌱㠲㈳〰戹ㅦ㐳搳㙣㜷攱㤹づ敢㔹㘳㐸㝢㘹㈹㔳㈰ㄹ㈴㐴昸㔶㕢㘵㜵㤴慦昹㜵㠲〷〱㕡摣ㅦ〶㈰㔳ㄸ㔱㐸㥥㘰㐴㐹㘳搸ㄷㅣ敢㉡㜹㘰㡦㡤挴搲㘴㉤〸慢㉥㌳㑢晤昶㔴昵㙣㌵㥣㜲㠲㔵㘴愲㠶散愸㜰㜱挵昲挰㕤㍥㝣㥦ㄶ㕣㜵㜵搵㉡ㅢ昶㐲戵〶搵㌶㌳戵ㄳ㌶收㔸づ昸㤲戲㌷捦㉡㕣㥤敤㡦昱〸㠵㤵㤶㜸㉢愳戱摢㡡㝥㜳搳㌷搰㔸搱㐵㈷慣㔸扤戶ㄶ㍡㤶ぢ㌶㔶ㄱ㤹㠳㜲㡦扤戸攲㕢搶㔴扦㝤捡㜷捡ㄵ挷戳㐸っ昸㤸㑣搶捤㕡㤷㤰㈵㤸慦㌲〷㔸昵晡敤㐵摦昴㠲㔵㤳〹挵昵扤㑤㜷㤲ㄶ挹搹ㄳ㡥ㄷ攰㌵㐲㐵㤶〷散㠵㤵敡㔵㘴㙣㙢慥㜷捡㕣つ㜶〴㔵挸昴晡ㄲ搲愸慣捡㘶㔵㈱㕢攸㤴㍥摣㤰㘷㌲㤴扤㙥〲愱㔵㈶挷㤸㜹㡡昵愶㕦ㅦ攵㘸攸愷㜳㑣㝤挸ㅥ搵㤱㕤愹㕡㤸㤲㙡ㅣ㘳㥦㠷〱ㅥ㌹㜵㝥愶㤱㤹㝢㔷㌹敢ㅣ愳晣㈹㍡㕥搸愲㥥〸㘱㡣㙥㡦㘶ㄵ攲挸㌹㤰㐰㔰㥣㜷慤散㔷戴愵つ戹㙦㑦愳㌸㡤㑣㔲㥦㍤㙢㉥㕢ㄵ攴愳㕤㌳摣愳㙦攸挶扡㘶㈵㠸敡㈶慢慥㙢㤲戵挸㤶ぢ㈵㤳ㅣ㍣㕥ぢ慢㘷ㅣ捦戰〱㠴晦㈲㤴㜹つ㈸昳㥡愰晡散㜳㑣つ㑡㤹捦慡㕥㌲㝤㈷㕣㜱㥤㔲㠱㌷㑣摦敤〸㥥㠴㤰㔳昳挶㔷慣㌳㠶㕢扣昹昳㜰搹㠲㔱㤰㝢ㄴ㝡㤴㑢㐷昲㠳㜳戳㉡㡦晦㔴㠷㠱㈵㈸ㄸ㠹㤴ㅡ扦㠹愷攵攴㜴〴㔴㡥㕣搷攳㌳ㄸ搷㥦〳㐶㉢㈱㔲㍤㠵㐵㄰ㄵ㑣㈸㜹㠶戸昳昶㜹捦〹㐱㍤㔲㙣摡〹愷〲㤰ㅣ〰㐵搹摥摥㈲㔴㑤㜴ㅡ愹㕢㠵摢㌷㔶㌵㤹㠹摢㌶搶㈷敤挶ㅤ㥢㔴㙢㡢㤲㌰㈴㕢㌵ㄲ换戲挹ㄸ㜷㤲愹㔱㘲戸㘳㙢愳搲挲愶㡤㜵愷ㄶ㜹ㄷ㠶㐹㜸㈶㘳㝣㕣ㄸ〵㠹摥挸㐶㌱㘶㥦捥ㅥ㠹㡣つ㝤㠰㈲敤㤴挶昵㐷㈹挱ㄹㅣ㍢㈹㕢挵攸づ昲扤㈷㉡捥搵挲愶ㅡ昳摡㔰㔴㌳㕥愹捣㜹昰ㄲ㑡愶㕦摥㈱㈲㡤戹㘹ぢ㈳搲搹愹昵搷换㥢㄰挴㐸っ㤹ㄶ㐹㠹〳㐳っ㈱㕣㠹㡣㉡扤戳㝥㉥㜵ㅤ㕤攰摤ㄹ换昴㠴〲ぢ㘱㜹捡㕡ㄳ㌷慣攱挹て㐹㠷晡㙥㔱昴愸㘱㡦㉦〷㌰改㈱昵㜸㔴ㄲ〱㌷散㜳っ㑢攱㄰〳搴㙥㔴㥡㉦㠵㐸敤搶ㅦ挰㥤挱捥愱づ㔶㐴愷㑥攸㥤㔱㠳收㔳ㄸ户㜹ㄲ㤴㥤づ㈹ち㐵㙡换昵摦㈷搴㌷㕥攲昵㘷㈷㌲㜱㈱ㄲ㈲愶扢㔲扣〷㄰㌷㤹㤹愴ㄴつ挵〹㜳慤搹㐴㘹昵挵㌸扡ㄸ晤㜴昹晣㄰愷㜸㤸换ㅡ愰搸㔴㜰捥㉤㜴㘰㑤㉢敢㝢散ㄹ慦㔴愹㤵㉤㌱挵戱慥ㄶ㡢扣㈳攸㈵㐷〰戵㌴愵慣㑢戴㈸㌳搸㑡㜱捡㈴㔲攷㝥户㜱〲摤㐵挹攱ㄹ摡昴㌱〱㤹ㄲ㤶㤳㠴搸㠶㜳ち昴て昷㌶づ㌰挸攱㌹愸戴つ㈸敡戲㔹㥣挷慢㘷㤱㐵摡ㄲ捤㘶慢戳㔵晡散〹搴㘹㐷愳㜶〴㡤㌰㑦慤昰昲㜹㌸㈳ㅤ㑡〷ㅦ㤲戹ㅥ㘵㜷慦㍦㈷户㤹敢㈰㠵㔰㐰㌱挷换㕤㔰〶慢ち㐱愲挳㥤㙤㜸摤㡡搹㕦㝡摥挶㌸㠰㘲ㅡ㤸づ㉤㕡㙡〷㘷ㄲ攵慤ㅤ㥣摢搱㉡㈵㐳㥡㑣愶㌲㐷㌹㠴㠰㍤㠸〶㘹攲㐶㝡戱ち㈳ㄴ敥㤳㠳㘱昱搹挴ㄱㄷ㕢愰慡㝦㔳ぢ㜲摥っ㜱晣挵㍢搰㠲ㅥ㉦㤷改敥㈲㍥户㈳愸㡡愳ㅢ摡ㅤ摤搷㜲㈸㑢收㐴晦敥㘰㑢㐵㜴㔸昰挸搴攸㘹㌳㉣慤㉣㠴敢晡攰㔶愷㉣㤱晢㉥攲ㄱ㥢扥㥤㍥㜳户挷㠳愸㙢㕣晢攲ㄵ慦㝡搵㤳㜱攵〲㥥晡〳㠷攰〸㘵て〷㔹捣晣ち晦挹㤵捤攴晥ㅡ㑦摣捥戰昹㠰㐶㠰㠴捦㤱慢㘸㑣攳㉦㤳搴挳昸㥢挲㉢昰摦敢㈷〷挸㉢晢㕡㜸㐵㤴挱㉥戳㜸㤷摥㌳㘶㔱㙦㠲戴㘴ㄸ㄰㍣㍥㈴㤲捤愸㌷㜰㐳愲㠳〶㈰㥣㌱㐳〸昲㝤〴㝦㔳挸㈷ち㍤㍡敡挱㠳㈱晦㝦㈸ㄵ㑢昵愶㘲昵扦㈰搴敡㜵㄰㐳挸〴㥡搴攵㔲㝤扢㤹㑣戳㥡㑣㡡㐷㐲㐴㤶捦愰㄰㕦㌹愶㙡摦㔱㔲㥣昳摡摤㡣扥敦㠷㝦晦て㌷愳㜳ㄱ㜳㠸扦㠶戴摢㥤戸慦扢ぢ㕤ㅢ摣〵㈶昲挵㕤㤸㐷㐱㌱愳慦摤㠵㈸ㅥ㜲づ㠸慤摤〵收昹㔲㥣挲㐴摡㌵ㄱ攲攰㙥散㈶㤷戱戲搳㌸㠴㙢〵挸敤挳㠰〵㤳㠸㑥敤摦㠸㥥㌷㝤搳㍤㈰昸㔳扥〵挳收㉦攲㔴户㜴㘱㡦㕢㌶慤㤱㑥㥢挴㉤攲㠸晢㙥㙣㘵㝢㘷搹㐱㈹㝤改㔰扥㉡愸晣扢㠸㥡㈸敥㈱㌲㥦摥昷㤷愷晥昵㤹捦㥦攰挹戵㠸㔷㜳㑣ㄵ㜷㤲扥愷㕦㠱〴㙦攲搰挸㡤晣㐸攷っ㍥㔷㜲㔶㉢搶㠴改㡢㐷ㄴㄸ㙥㕣搴㡣㤷㘰㑣捤㝣㍢挱摤挴ㄹ〸敤㙥㡥戶㠴㍥攵㈳㈷〹ㄷ㡥㈶〶㉥昱扤㌸㠵愸摡ㅡ戳づ㍤捦摣㕦挰ㅣ扤挳㠱㌴㝢㡣摣㠱昲㔲敡捦㘳㝢愷ㄱ㤹捣㔱㔸㌴扤慤㔴㍣〲㄰㙢㈹攴㈲挸㈱挹㑤つて〷㠸㤶㍡㡦㐲敥㍥㠰㤴㉣㕢㙢扡㤷戱㠱㕤㈵㘰搵て〰㜶昸㐱ぢ㔶ㄱ㔴㡣攳昲㥤敥㙥ㄹち㠸㑤ㄳ搳戶攲搳㕣㐰㐱㌶㌲㐴㡣挵搸㡢㈸挴㔷敥〸㑡摢づ㑤昱㈵晤慥㑥挲㘹挱捥戹㡣扢ㄵ摤㤳㕥つ愷㐰㘰㘷昲㘲㌰扣扤㐴㘳㜳㉡昹㍡摤戴愸㔱㠴〳扡㔸敦搴ㅢ㔵挱㘶㜹〷戰㐳㐵㈲㤰㕦つ戱㝥愴昱攸ㅢ㕢㙢㘸攳扣ㅥ㑣㤰㍦昸㕦户愵〸㌶摥㑡㠹㠱㠶摤㔶慢㠲㍥㉡晥ㄸ扡㜰搲ㄹ㘵㌴㡡㜲慦㤸慦㡥㈵慢㉢扢挱晥㌳㤳㉤㤲昵㌸㝢㌳愵摤㘴晦㥦〰㘲㑢晢慦㡥戱㉦㝥挶㤳㔱㠱㌷㌹收㔲戶㑣摦㜰㐵㄰攵㐶㈲㐷㌶挹㠶ㄴ㤹晥搶愵〵㝣挸慡慢㐵㠳㈳〶搶摤㝡㑣愲摥㤷扥㙤㙦㕢〵挸㍣㔱敥㑦愱㠲摡昶㙦搶㕢昱㑥㌷晦摢攸戸敦㡣㔳昲慢㐱搵づ㠷ㄷ㤰〰ㅥ收㜷㘸㌶㝣㥥㜱昵㕡慢㔲㍢㠸㤵攸㝢ち㝤捥捥㐱㘱㥦戵挲昷㉡㉦挹㉣挳昶戲ㅡ晣㈶㘹㌰㤱㙡愲㜵〸㙥戰ㅦ慤㤹ㄵ㝣挶㍡㠷戸㘷㐸搴㡥㌰㜶㍡晡摣㝡㕡㠳㑢㠷昳㕡㥦㐴㙣挸慡㡣㈲㔱㈶㔳㜸攲㔳㕣搷搶㌵㘸㙥ㅢ捤㉤㘰换捥攲㙦挵摣㉢愰改昶摥搲捣㌲㝣㈷扦㑥㉥ㅡ换㠴搸㕣㥦挰摦敤〷㙢昹戴㈱昰㜹昴㜱㌷㠳㘲㈳ㄵ㠴搲戶㤱〹㉦愱慢ㅡ㈷挰捦㈸㐷〵摥㈸㐶晣㈸㡡敡㥢㤸ㄶ〵〰㘵散〱〱摡㜳昵㑢㘸愶㈳〸㙣㡣㡢㕣慤愶㔱㤰攷慦愰㐰扦㡤㍦挵㐰㠲㘰㥤㈴㤶晢㔶挱㕥㑥㘰〷攳捤慢攲㉥㠵っ㕤㔴㝦㠴㔷扤㠲㥦㕥戸ち㜱搸戵挸㙥〴㘵㈳敥㠱㜲㐶㜱㌷㈲㔳㜹ㄱㅤ敡㔳愹〲摢㝥㉡㕦㐳搳㡤㔳愱ㅦ㈱挳㑢㍥㝦㌰戶㐳㠶㡦㙡㈳㈰〸〹㙡〰㠳戱㌹ㅡ愰㠶愵摡捡敢㡣挵㥢㈴㌲慥㝦㡣晥扥㝤攲挷㙦昱晡慦ㄳ㑡㜴㉡慡㥡㘷㐱㥤㉡戳㜸㈱㌹㡢㙢挰戶㥦挵ㄷ㌷㥢挵攰㤳攸挳㤱ㄸ捦〰昴㜷㈹戲㥤捣敡搳㈸㜰㐱昹㔳愵ㄸ摢㌴㔷昲㠸昴晤ㅤㄴ晡扢〶㐹㔳〶㜸㡣摦㈵㜸㡥攰㜹㠲捦㄰㝣㤶攰㜳〰晤搹㐱㤲㔹ㅡ㝥㥥挸㉦㄰晣ㅥ挱ㄷ〹㝥㥦攰〵〰㌴㈴攵愵攱㤷㠸晣〳㠲㍦㈴昸㌲挱㔷〸扥ち搰㥦㔵㈴扡っ晢㙢㈸挴挳捥㤱〶㈹㥦㉢㠹㤷挷愳㥤㝣㐵㕥㠷㤷昳摡戶ㄷ摣㈸慥扣㈳㌴ㅣ愶挴敦㝦摢ㅡ愶㝣㠷㘷ㄶ㔴㌵收㠹搳愷愳愸㕥㈶ㅢ㘵搱挰㤳㍡㔹㐰ㅥ收㐲㉡㉦㙥晣㔷慦㌷㠲㑤愸挰〵挶搵㡤挹敢搲搸㡤ㅢㅦ挱㜷㘶搲〶㑦搶搷摢㜱㘳捡㠴㌴慥挴㡤㝦㜶攴㐰扤㜱㉣〲晡挹㌹昲㘷㡡挷㉥㝢㤸挴㌷攷〳㘸㥥戳改〵昴摡ㅡ㑤晤㉦挹昰㡡昸〱㝤㌸摥攲攳慢敦㔹㥣搶挲愱ㄶ㤸ち晤㡦㍦捣攰ㄴ搷㤴ㄹ㥡昸愸㝢つ改㜳摦㤰㍢㜶捥摢㜳㍥㄰㍤昶㑣㠰㥤㘱㜹㐷戱〸㥣㥡㙥扤扥㕢愴ㄹ㔲ㅣ攰挶㝡挴㘹扦㉣㑦挵㜴㘶〲㈵㔵搴慤㉥挷㤴捤㍣摦攰ㄹ攳敢㈰づ㌴㌴㈰ぢ挶ㅦ〳敡搴ㄲ捦㕦㘷〶愹㝡㐴慦㝣㠳ㄵ摦㈴㜸ㄹ愰愸愸㘷挸〷昹㍦〱ㄸ㠸晦改㡤攱㌵㠹晡㘴搵㜲晣戲㈴ㅢㄹ慦戰挳慢〰㕤〸㐴慢㠸〹㡢挶㙢挰㈴㕥㥡愳捥晡㡤昶㕥㌵㌷捤昱㍦〷㠰〴㘹搳㜷晦㈷昱ㅤ晦㍡ㅦ摣㠵㝦挶㈴㈷㕢㠰敥散挳㥤㍤㡢㡣㐶敦㕤㝥㥦挲㠴摥挵㜳戸挰㡤扣ぢ㥦㐸捤㔸㔴搴捣㥣慥㝡ㄲ捦攷㍢攸摣ㄷ搵昳㌱晡㠹〸捤㐳㈸㐵昵㤹ㄸ晤㕢ㄱ㝡扦愰㍦ㅢ愳ㅦ㡦搰㜷ぢ㥡ㅡ㕥㥥晤㔸㠴扥㐷搰㔴昴㠲扥ㄸ愱昵㐸扥㄰愳㉦㐴㘸㍤ㄲㅡ〳㘹㝤㍥㐲敢㤱搰㍣〸㝡㌱㐲敢㤱搰㘰〸㝡㈱㐲敢㤱搰㠴〸晡㕣㠴搶㈳愱㈵ㄱ昴愳ㄱ㕡㡦㠴戶㐵搰昳ㄱ㕡㡦㠴搶㐶搰㜳ㄱ㕡㡦㠴昶㐷搰㘷㈳戴ㅥ〹㉤㤲愰捦㐴㘸㍤ㄲ摡㈸㐱捦㐶㘸ㄹ挹㈰㑤㤵戰昹户㔱㌰㕥㈷昸づ㐰㌱昷㜵挰㙤换㈹㠹摣愱挷昷〶扡㉡ちㅦ㥦㘱扣ㄹㄵ㜸愳㈸㜹㌲攴改㘸挸昴㌶ち搹扣愲㌴㑡挵挹愸攲戸㔴㈸㐵〹㤵㡡愹愸攲〴㄰挶昷〰ㄴ㈵㤰㜳㌲扥捦扢搷〸㜸昷㠳愸㈰㉦攴ㅡ㐸昷㑦戴扣㤰敢㈲ㄵ㈷㕡㕥挸戵㤲㡡㡦㈷㕦昸㌷㝣愸㑣っ㠵㈶愷㘹㤰ㄳ㤴昵晥㍢ㄴ晡扢〶㌸戶㡢昸㘵慦愹搲㔳攵愷㥥晡挵㐰昷昰㉤摤㡦㝤愲敦愵户晦攱愷㉦晥攴挹攳晦昱换㤷㕦晥挹扦扤昸搶㉦扦扢㝣晣㐷摦晡搶摦㍥昲捡㕢㍦摤㙢扦㥡㝤晤ㄷ戳慦㍥㍢㜶攵搹愷敤昳昷㥥㝡昶昱换㡦㡥捤摦㌰搲搵搵搳㜳搷搰摦摦㝣昷攰昳㑦扦愱㝥昸捦晢㍤㈵搳挵ぢ㥡㠷挱㘹换㌰㝥㠴〲㠶挱ㄱ扦慦挳攰㜴㘵愱ㅥ㡡ㄶ㙡〲㠸〲㥣㜱づ㐰㉡ㅥ㙣慥攸晤ㅦ㜶戰㔸㉢ | H30: 㜸〱敤㕣㕤㙣ㅣ搷㜵摥扢攴㉥㜷㤶愴㐸㡢戲㘵㌹㡥捤搸㜱晣㐳㤵ㄶ㘵慢戶搲㉡っ㝦㐴㠹〹㈵搲㈲㈵搹戵㔳㝡戸㍢㈳㡥戴㌳㑢捦捣㔲愲攳搶捥㕦摤戴㐹ㅢㄸ㉤㔲㈷㉥㙣愷㐰㠱〲㙤㠱㍥㐴戵搱戴㐵搱ㄶ㈹ち〷攸㐳晡搰愲て㙥㕡㌴㐰㕢ㄴ〲晡㤲㠷〰改昷㥤㍢戳㍢扢攴づ改戵摤搲〵挷摥挳㍢攷摥㍢㜳敦㍤扦昷㥣㍢捡愸㑣㈶昳ㄳ㕣晣换慢㥢㠵摢ㄷ㌷㠲搰㜲㐷愷慡㤵㡡㔵ち㥤慡ㄷ㡣㑥昸扥戹㌱攷〴㘱ㄷㅡ攴㤷ㅤ搴〷戹攵挰㜹搶㉡㉣慦㕢㝥㠰㐶戹㑣愶㔰㌰戲愸攷㐳昸ㅢ㡣㙦っ昶敡敢〶㔸㥡㥡㥣㕦戹㡣愷㉥㠶㔵摦㍡㍣㝣㐱昷㍤㌱㌶㌶㍡㌶㝡昴愱攳㘳愳㐷づて㑦搵㉡㘱捤户㑥㜸㔶㉤昴捤捡攱攱㠵摡㑡挵㈹㝤摡摡㔸慡㕥戱扣ㄳ搶捡㤱㠷㔶捣㠷ㅦㅤ㝢昸搸㌱晢昸昱㐷晢昰敡捣搹愹挹〵摦戲㠳昷攸㤹㌹づ昹攱㘹慢攴㜰㙥㤶攵㍢摥愵搱愹㐹晣㥦ㄸ㍦敥ㅥㄹ㕤㕣戵慣㤰慦戶㝣换㉢㔹㠱㠱㡥扤敥㐴㄰搴摣㌵㉥㥥攱捥㘰慡㈵㌳〸㜳敥㤴㔵愹ㄸ㙥晣搴㠲㍢㡦戵慢㤸ㅢ㝤敥愲攵〵㑥攸慣㍢攱㐶摥㕤挲㠳捡晤敥昹挰㍡㘷㝡㤷慣戳愶㙢攵摣㔳㌵愷摣慤慦㑣搷扤昱㈳㤲〳㤳改㡦㑥〴敥搴慡改换㠸〲㉥㑣㑡摢ㄹ扦搴摣昶敥昶捦攵搰攵つ㝣收㍤敤摢愱收㠲改搷㕢㡥戴㙦ㄹ㑤扥㜹〴て戶㙦㥦㔸愳收㍥昷户敦㈳㑢搹摣㕡昵㐶晣㉤㉢㡡挹ㄸ㜹㠲ㅥ㠲〲〱〹㘸ㄴ〹㝡〹晡〰㔴昷㝦㐳㑡㤲ㅤ㔹㤵㕤㌶戳换㉢搹攵㔲㜶戹㥣㕤戶戲换㜶㜶昹㔲㜶㜹㌵扢散㘴㤷㉦㘷㤷慦愰㑤㝣ㄵ㝡㝡戲搱昵ㅢ攷敦晡㤷敢晦晥扢愷㕥晣攱㍦㍥摥晢挶挴㕤㝤晢搰攸戱㘸㔰搳扥㜹ㄵ慣搶攰攲愳愳㐷昸摦昶㔲〱愱戰㡦搹㡦搸㘳㘳攵㘳㐷捣㠷捣ㅣ愷㤵㐲晣㈶㐶ㄹ㐴摢㍥晢愲攳㤵慢㔷㠵㜶户㑦㥡㠱搵㔸戸㤱愸㙥戲㕡昳捡挱㠷戶慥㕣っ捤搰扡慤戵慥昱㤰㑤摤ㄶ㈱㔶㔶㈰敦扢愳戵摢〵戳㔲戳㈶慥㌹扡晡挳㉤搵敥㠲㕦㕤㘹㕦㍢攳㕢捦搴㙢㌷㡤㘸〲㑡㙤㕤㥥扤㘹㤶扡㑡㡦㙢㜸㙡戵ㅡ㔸㥥っ㙦挴㕤㜰㑡㔷㉣㝦搱愲㑡戴捡㌲搵㥢㔹ㄵ㐹晤挸扣㠷㠹㐲㕡换㜷㈵戱昶挹㙢㈱㠴搹㉡㘳扣㙢㤶ㅦ㙥㉣㤹㉢ㄵ敢㤶愶㈶晡㥤愸㌸搴㠴㥥愹㤶㙡挱㔴搵ぢ晤㙡愵戹㘶愲扣㙥㐲搳㤴捦㔴换㔶㜷㜷㐶㤴〲ㄴ㙥㔷㤷㔲㤹〷摡换㠲㄰㈲㐱㘲ち昲慤捤㙣㌷㝡づ戳挳㉣㉡ㄶ㜹㌲晢搱㙤ㅥ挶昱㡡㡥㐹㤱挰挴㥣㘸㍦昸搲晢戶㜹㙣㥤㜲敦㙦攳㙣㜶㈸㥡晤挹㜵换ぢ㑦㥢㕥戹㘲昹愹搶㑦㜱㐴挶〰㐰敥〶ㄴ㐲摢搵愳愹㔳搷搴㐶敥慡㔳づ㔷昳慢㤶㜳㘹㌵〴づㄶ戲㔰攰搲㙥扡㡣㥢㠰㌲昶ㄳっ〱ㄴ㡢㤹晣〱㌶捡ㄷ㜱㘵㜲搴㑥㈹戲摣愴挸搹慦㐹㤶晢散ㄹ愷ㄲ㕡㕡㈹て搸愰㠸戶㙡㐲扥㝥戲愸㙦㤶戴挱㌸㘰㑦㠱㑢㑤挷ぢ㌷ㅡ㜲扢㐹㑡㌴ㄳ敤改㠲㕤愷ぢ愸ち㥡昵㐱㡡慣㠱㘹㕡戴㐱㝡攳〴ㄳ㔱っ㔲㉣㍢㥥摣捣㘴㙣㥦愲㈳搰㍥挹㠴㙣㝤愴扤㡥㈰戳㙦㘶㔲㜶㙡㉢㡦㝢摡㙣㉢㕦㕥㙢戳㥢戱㜰挶㉤〴〷〹㙥㈵㌸〴愰晥つㅡ㡥㕡づ攵收换昸㄰敥㡤摢〹㍥っ〰晤㘴㔰攷㐴慡㡡㍥搴㑥晣㐸戶敢㠷㥦㉣㑥戱㔶㐵昴㡣敢㝥㘶扦㉢㠴㡥扣捥摤㘱㙢扢挵挶㝥慣㍤㙦㈶愷㐳㡥㑣㘹㥡㥣敢㌶㑤㤳ぢ挱愶ㅤ摡慤㍢搱搵ㄸ㈶昸〸㐰搱戸㡢㄰挶㠵づ敦捥㍣㝡扡㤴ㅦ〸户㐸㍢㐳ㅤㅡ昸㠸㤱戹〵㐸㔱㜲㥢戶㉦㝢㍥㌴摤挱ㄱ晢〳敦㐳ㅦ㙥㉦摦ㄱ搱㕢散收㥥摤㘱扣攸ㅤ㝡搱㜷㐳扣搴㍦戵戵㌱昷愰摡昸ㄸ挱扤〰㉤㌶㠶扢敦㜷ㅡ㈹㄰户搸㑤㔰㙥㍦愳㉥攲攵㉥㙤慣㔹㘲㠱晡散㈵搳扦㘴㠵㠸㘰捣㑥挳ㄷ慥晡扥㔵挱愶戶㉣〸敥㕦づ㌶㈳㠳ㄹ扦敡ㄲ扦攷㈳〷ㅦ〸挳搰摤㥤敤捡戴昸挸㈹扥㘶㈲收㤴攰ㅣ摡攰㠷摡㉢㠹㐴愷㘶昶㘲扦昴晤攵㥥㈶改㐰㤳摣㡦㘵㌵ㅥ〰㠰㤶㔰㝦摦㔶愳ㅣ㘶戳㥦㤲㘶捤ㅥ㉢㈳㝣㈹扢㤳㤶ㄸ攲㈶㍤搲慢〳戶㤳㠸ㅦ〴晤敥愲攳搶㤵㐵慦扢㘰昹㈵挴ㄶ㥣㡡㔵搴㘱㔹慡㥡㍤㕤昱〱搱ㄵ㕤㕤㥢昶搳㈹昱㌵攱㤳ㄶ㉤㤱㉡敤愹㤵㈹㝢昱〶㔳㌱っ㐹愵㤲ㄲㅡ慡㙢㈰㜲ㅥ摢敥愹㤸づ㔴捣㠳㔸㌸攳〸挱ㄸ挱㔱㠰摣昷愰㘹㜶扡昰㑣㠷昵慣㌳愴扤扣㥣㈹㤰っㄲ㈲㝣慢慤戲㍡挶搷晣㌴挱㈳〰㉤敥て〳㤰㈹㡣㈸㈴㑦㌰愲愴㌱散ぢ㡥㜵㤵㍣戰捦㐶㘲㘹慡ㄶ㠴㔵㤷㤹愵㝥㝢扡㝡戶ㅡ㑥㍢挱ㅡ㌲㔱㐳㜶㔴戸戸㙡㜹攰㉥ㅦ扥㑦ぢ慥扡戶㘶㤵つ㝢戱㕡㠳㙡㥢㥤摥つㅢ㜳㉣〷㝣㐹搹㥢㘷ㄵ慥捥昶挷㜸㠴挲㑡㑢扣㤵搱搸ㅤ㐵扦戹改ㅢ㘸慣攸㤲ㄳ㔶慣㕥㕢ぢㅤ换〵ㅢ慢㠸捣㐱戹挷㕥㕡昵㉤㙢扡摦㍥攵㍢攵㡡攳㔹㈴〶㝣㑣㈶敢收慣㑢挸ㄲ㉣㔴㤹〳慣㝡晤昶㤲㙦㝡挱㥡挹㠴攲挶晥愶㍢㐹㡢攴散㐹挷ぢ昰ㅡ愱㈲换〳昶攲㙡昵㉡㌲戶㌵搷㍢㘵慥〵扢㠲㉡㘴㝡㝤〹㘹㔴㔶㘵戳慡㤰㉤㜴㑡ㅦ㙥挸㌳ㄹ捡㕥㌷㠱搰㉡㤳㘳捣㍣挵㝡搳慦㡦㜲㌴昴搳㌹愶㍥㘴㡦敡挸慥㔴㉤㑣㐹㌵㡥戳捦挷〱㍥㜵敡晣㙣㈳㌳昷慥㜲搶㌹㐶昹㔳㜴扣戰㐵㍤ㄱ挲ㄸ摤㍥捤㉡挴㤱㜳㈰㠱愰㌸敦㕡搹慦㘸㑢ㅢ㜲摦扥㐶㜱〶㤹愴㍥㝢捥㕣戱㉡挸㐷扢㘶戸㑦摦搰㡤㜵捤㑡㄰搵㑤㔵㕤搷㈴㙢㤱㉤ㄷ㑢㈶㌹㜸愲ㄶ㔶捦㌸㥥㘱〳〸晦㐵㈸昳ㅡ㔰收㌵㐱昵搹攷㤸ㅡ㤴㌲㥦㔵扤㘴晡㑥戸敡㍡愵〲㙦㤸扥摢ㄵ㍣〹㈱愷收㡤慦㔸㘷っ户㜸昳攷攱戲〵愳㈰昷㈸昴㈸㤷㡥攴〷攷㘶㔵ㅥ晦愹づ〳㑢㔰㌰ㄲ㈹㌵㝥ㄶ㑦换挹改〸愸ㅣ戹㙥挴㘷㌰㙥㍣て㡣㔶㐲愴㝡ち㡢㈰㉡㤸㔰昲っ㜱攷敤昳㥥ㄳ㠲㝡愴搸㡣ㄳ㑥〷㈰㌹〰㡡戲扤扤㑤愸㥡攸㌴㔲户ち㜷㙥慥㙡㌲ㄳ㜷㙣慥㑦摡㡤㡦㙥㔱慤㉤㑡挲㤰㙣搷㐸㉣换ㄶ㘳摣㑤愶㐶㠹攱㡥慤㡤㑡ぢ㥢㌶搶㥤㕡攴㕤ㄸ㈶攱㤹㡣昱〹㘱ㄴ㈴㝡㈳ㅢ挵㤸㝤㍡㝢㈴㌲㌶昴〱㡡戴㔳ㅡ搷ㅦ愵〴㘷㜱散愴㙣ㄵ愳㍢挸昷扥愸㌸㕦ぢ㥢㙡捣㙢㐳㔱捤㐴愵㌲敦挱㑢㈸㤹㝥㜹㤷㠸㌴收愶㉤㡣㐸㘷愷搶㕦㉦㙦㐲㄰㈳㌱㘴㕡㈴㈵づっ㌱㠴㜰㈵㌲慡昴捥晡戹搴㜵㜴㠱㜷㘷㉣搳ㄳち㉣㠶攵㘹㙢㕤摣戰㠶㈷㍦㈴ㅤ敡扢㐵搱愳㠶㍤戱ㄲ挰愴㠷搴攳㔱㐹〴摣戰捦㌱㉣㠵㐳っ㔰扢㔱㘹愱ㄴ㈲戵㕢㝦〰㜷〶扢㠷㍡㔸ㄱ㥤㍡愱㜷㐶つ㥡㑦㘱摣收㐹㔰㜶㍡愴㈸ㄴ愹㉤搷㝦㡤慢㙦扣捣敢昷挶㌳㜱㈱ㄲ㈲愶扢㔲扣〷㄰㌷㤹㤹愴ㄴつ挵〹㜳慤搹㐴㘹昵挵㌸扡ㄸ晤㜴昹晣㄰愷㜸㤸换ㅡ愰搸㔴㜰捥㉤㜴㘰㑤㉢ㅢ晢散㔹慦㔴愹㤵㉤㌱挵戱慥ㄶ㡢扣㉢攸㈵㐷〰戵㌴愵慣㑢戴㈸戳搸㑡㜱捡㈴㔲攷㝥户㌱㡥敥愲攴昰っ㙤晡㤸㠰㑣〹换㐹㐲㙣搳㌹〵晡㠷晢ㅢ〷ㄸ攴昰ㅣ㔴摡㈶ㄴ㜵搹ㅣ捥攳搵戳挸㈲㙤㠹㘶㜳搵戹㉡㝤昶〴敡戴愳㔱扢㠲㐶㤸愷㔶㜸昹㍣㥣㤱づ愵㠳て挹摣㠸戲扢㌷㥥㤷摢捣つ㤰㐲㈸愰㤸攳攵㉥㈸㠳㔵㠵㈰搱攱捥㌶扣㙥挵散㉦㍤㙦㘳〲㐰㌱つ㑣㠷ㄶ㉤戵㠳㌳㠵昲昶づ捥㥤㘸㤵㤲㈱㑤㈶㔳㤹愳ㅣ㐲挰ㅥ㐴㠳㌴㜱㈳扤㔴㠵ㄱちて挸挱戰昸㙣攲㠸㡢㉤㔰搵扦愵〵戹㘰㠶㌸晥攲ㅤ㙡㐱㑦㤴换㜴㜷ㄱ㥦摢ㄵ㔴挵搱つ敤㡥ㅥ㘸㌹㤴㈵㜳愲㝦㜷㜷㑢㐵㜴㔸昰攸昴攸㘹㌳㉣慤㉥㠶ㅢ晡攰㔶愷㉣㤱晢づ攲ㄱ㕢扥㥤㍥㜳户挷㠳愸敢㕣晢攲ㄵ慦㝡搵㤳㜱攵〲㥥晡〳㠷攰〸㘵て〷㔹捣晣〴晦挹㤵捤攴晥〴㑦摣挹戰昹㠰㐶㠰㠴捦㤱慢㘸捣攰㉦㤳搴挳昸㥢挲㉢昰摦敢㈷〷挸㉢〷㕡㜸㐵㤴挱ㅥ戳㜸㤷摥㌳㘶㔱㙦㠲戴㘴ㄸ㄰㍣㍥㈴㤲捤愸㌷㜰㐳愲㠳〶㈰㥣㌱㑢〸昲㝤〴㝦㔳挸㈷ち㍤㍡敡挱㠳㈱晦㝦㈸ㄵ㑢昵㤶㘲昵扦㈰搴敡㍡㠸㈱㘴〲㑤敡㜲愹扥摤㑣愶㌹㑤㈶挵㈳㈱㈲换㘷㔰㠸慦ㅣ㔳戵敦㈸㈹捥㜹敤㙤㐶摦昷挳扦晦㠷㥢搱昹㠸㌹挴㕦㐳摡敤ㅥ摣搷摤㠵慥㑤敥〲ㄳ昹攲㉥㉣愰愰㤸搱搷敥㐲ㄴて㌹〷挴昶敥〲昳㝣㈹㑥㘱㈲敤㥡〸㜱㜰㌷㜶㡢换㔸搹㘹ㅣ挲戵〲攴昶㘱挰㠲㈹㐴愷づ㙥㐶㉦㤸扥改ㅥㄲ晣㈹摦㠲㘱昳㤷㜰慡㕢扡戰挷㙤㕢搶㐸愷㉤攲ㄶ㜱挴㝤㉦戶戲戳戳散愰㤴扥㜴㈸㕦ㄵ㔴晥㕤㐴㑤ㄴ昷㄰㤹捦ㅥ昸挳㔳晦晣散ㄷ挷㜹㜲㉤攲搵ㅣ㔳挵㥤愴敦改㔷㈰挱㥢㌸㌴㜲㌳㍦搲㌹㠳捦㤵㥣戵㡡㌵㘹晡攲ㄱ〵㠶ㅢㄷ㌵攳㈵ㄸ㔳㌳摦㙥㜰㌷㜱〶㐲扢㥢愳㉤愱㑦昹挸㐹挲㠵愳㠹㠱㑢㝣㉦㑥㈱慡戶挶慣㐳捦㌳昷〷㌰㐷敦㜰㈰捤ㅥ㈳㜷愰扣㤴晡晤搸摥㘹㐴㈶㜳っㄶ㑤㙦㉢ㄵ㡦〰挴㕡ち戹〸㜲㐸㜲㔳挳挳〱愲愵捥愳㤰㝢㄰㈰㈵换搶㥡敥㘵㙣㘰㑦〹㔸昵〳㠰ㅤ㝥搰㠲㔵〴ㄵ攳戸㝣愷扢㕢㠶〲㘲搳挴戴慤昸㌴ㄷ㔰㤰㡤っㄱ㘳㌱昶㈲ち昱㤵㍢㡡搲㡥㐳㔳㝣㐹扦慢㤳㜰㕡戰㜳㉥攳㙥㐵昷愴㔷挳㈹㄰搸㤹扣ㄸっ㙦㍦搱搸㥣㑡扥㑥㌷㉤㙡ㄴ攱㠰㉥搶㍢昵㐶㔵戰㔹摥㈱散㔰㤱〸攴㔷㐳慣ㅦ㘹㍣晡收搶ㅡ摡㌸慦〷ㄳ攴て晥搷ㅤ㈹㠲㡤户㔲㘲愰㘱㜷搴慡愰㡦㡡㍦㡥㉥㥣㜴㐶ㄹ㡤愲摣㉢收慢㘳挹敡捡㙥戲晦捣㘴㡢㘴㍤挱摥㑣㘹㌷搹晦㈷㠱搸搶晥慢攳散㡢㥦昱㔴㔴攰㑤㡥戹㤴㙤搳㌷㕣ㄱ㐴戹㤱挸㤱㑤戲㈱㐵愶扦㜵㘹ㄱㅦ戲敡㙡搱攰㠸㠱㜵户ㅥ㤳愸昷愵㙦摢摢㔶〱㌲㑦㤴晢ㅤ愸愰戶晤㥢昵㔶扣搳捤晦㍣㍡ㅥ㌸攳㤴晣㙡㔰戵挳攱㐵㈴㠰㠷昹ㅤ㥡つ㥦㘷㐲扤摥慡搴敥挶㑡昴㍤㡤㍥㘷攷愱戰捦㕡攱㝢㤵㤷㘴㤶㘱㘷㔹つ㝥㤳㌴㤸㐸㌵搱㍡〴㌷搹㡦搵捣ち㍥㘳㥤㐷摣㌳㈴㙡㔷ㄸ㍢ㅤ㝤㙥㍤慤挱愵挳㜹慤㑦㈳㌶㘴㔵㐶㤱㈸㤳㈹㍣昹ㄹ慥㙢敢ㅡ㌴户㡤收ㄶ戰㘵㘷昱户㘲敥㔵搰㜴㘷㙦㘹㘶ㄹ扥㤳㕦㈷ㄷ㡤ㄵ㐲㙣慥挷昱㜷攷挱㕡㍥㙤〸㝣ㅥ㝤摣捤愰搸㐸〵愱戴ㅤ㘴挲㑢攸慡㈶〸昰㌳捡㔱㠱㌷㡡ㄱ㍦㡡愲晡㈶愶㐵〱㐰ㄹ㝢㐰㠰昶㕣晤㌲㥡改〸〲ㅢ攳㈲㔷慢ㄹㄴ攴昹慢㈸搰㙦攳㑦㌱㤰㈰㔸㈷㠹攵扥㔵戰㤷ㄳ搸挱㜸昳慡戸㑢㈱㐳ㄷ搵㙦攲㔵慦攲愷ㄷ慥㐲ㅣ㜶㉤戲ㅢ㐱搹㠸㝢愰㥣㔱摣㡤挸㔴㕥㐲㠷晡㔴慡挰戶㥦捡搷搰㜴昳㔴攸㐷挸昰㤲捦ㅦ㡣敤㤰攱愳摡〸〸㐲㠲ㅡ挰㘰㙣㡥〶愸㘱愹戶昲㍡㘳昱㈶㠹㡣敢敦愲扦㙦㡦㝦敦㉤㕥晦㌹慥㐴愷愲慡㜹ㄶ搴愹㌲㡢㉦㈷㘷㜱つ搸昶戳㜸㜱慢㔹っ㍥㠵㍥ㅣ㠹昱㉣㐰㝦㤷㈲摢挹慣㍥㡢〲ㄷ㤴㍦㔵㡡戱㑤㜳㈵㡦㐸摦㕦㐰愱扦㙢㤰㌴㘵㠰挷昸㐵㠲攷〹㕥㈰昸ㅣ挱攷〹扥〰搰㥦ㅤ㈴㤹愵攱ㄷ㠹晣ㄲ挱㉦ㄱ扣㐸昰换〴㕦〶㐰㐳㔲㕥ㅡ晥ち㤱扦㑡昰ㄵ㠲慦ㄲ晣ㅡ挱慦〳昴㘷ㄵ㠹㉥挳晥ㅡち昱戰㜳愴㐱捡攷㑡攲攵昱㘸㈷㕦㤱搷攱攵扣戶敤〵㌷㡡㉢敦ちつ㠷㈹昱晢摦戶㠶㈹摦攱㤹〵㔵㡤㜹攲昴改㈸慡㤷挹㐶㔹㌴昰愴㑥ㄶ㤰㠷戹㤰捡㡢ㅢ晦搱昵㐶戰〹ㄵ戸挰戸扡㌱㜹㕤ㅡ扢㜱攳愳昸捥㑣摡攰挹晡㝡㍢㙥㑣㤹㤰挶㤵戸昱㝦ㅣ㍤㔴㙦ㅣ㡢㠰㝥㜲㡥晣㤹攲戱换ㅥ㈶昱捤昹〰㥡攷㙣㝡〱扤戶㐶㔳晦㑢㌲扣㈲㝥㐰ㅦ㡥户昸昸敡㝢づ愷戵㜰愸〵愶㐲晦攳て戳㌸挵㌵㙤㠶㈶㍥敡㕥㐷晡摣㌷攴㡥㥤昳昶扣て㐴㡦㍤ㅢ㘰㘷㔸摥㔵㉣〲愷愶㕢慦敦㌶㘹㠶ㄴ〷戸戱ㅥ㜱摡㉦换㔳㌱㥤㤹㐰㐹ㄵ㜵慢换㌱㘵㌳㉦㌴㜸挶昸㍡㠸〳つつ挸㠲昱㕢㠰㍡戵挴昳搷㤹㐱慡ㅥ搱㉢摦㘰挵㌷〹㕥〱㈸㉡敡ㄹ昲㐱晥户〱〶攲㝦㝡㘳㜸㕤愲㍥㔹戵ㄲ扦㉣挹㐶挶慢散昰ㅡ㐰ㄷ〲搱㉡㘲挲愲昱㍡㌰㠹㤷收愸戳㝥愶扤㔷捤㑤㜳晣捦〱㈰㐱摡昴摤晦㐹㝣挷扦挱〷㜷攱㥦㌱挹挹ㄶ愰㍢晢昱捥㥥㐵㐶愳昷㉥扦捦㘰㐲敦攲㌹㕣攰㐶摥㠵㑦愴㘶㉣㉡㙡㘶㑥㔷㍤㠵攷昳ㅤ㜴敥㡢敡㠵ㄸ晤㘴㠴收㈱㤴愲晡㕣㡣晥戹〸㝤㔰搰㥦㡦搱㑦㐴攸晢〴㑤つ㉦捦㝥㍣㐲摦㉦㘸㉡㝡㐱㕦㡣搰㝡㈴㕦㡡搱ㄷ㈲戴ㅥ〹㡤㠱戴㍥ㅦ愱昵㐸㘸ㅥ〴扤ㄴ愱昵㐸㘸㌰〴扤ㄸ愱昵㐸㘸㐲〴㝤㉥㐲敢㤱搰㤲〸晡戱〸慤㐷㐲摢㈲攸㠵〸慤㐷㐲㙢㈳攸昹〸慤㐷㐲晢㈳攸戳ㄱ㕡㡦㠴ㄶ㐹搰㘷㈲戴ㅥ〹㙤㤴愰攷㈲戴㡣㘴㤰愶㑡搸晣摢㈸ㄸ搷〹晥ㄸ愰㤸晢㍡攰㡥攵㤴㐴敥搰攳㝢〳㕤ㄵ㠵㡦捦㌰摥㡣ち扣㔱㤴㍣ㄹ昲㑣㌴㘴㝡ㅢ㠵㙣㕥㔱ㅡ愵攲㘴㔴㜱㐲㉡㤴愲㠴㑡挵㜴㔴㌱づ㠴昱愷〰㡡ㄲ挸㌹ㄹ㝦挶扢搷〹㜸昷攷㔱㐱㕥挸㌵㤰敥㥦㙣㜹㈱搷㐵㉡挶㕢㕥挸戵㤲㡡㑦㈴㕦昸㤷㝣愸㑣っ㠵㈶愷㘹㤰ㄳ㤴昵晥㙢ㄴ晡扢〶㌸戶㡢昸㘵慦愹搲搳攵愷㥦晥搱㐰昷昰㙤摤㡦㝦戲敦攵户晦昶〷㉦㝤晦愹ㄳ㍦晣昱㉢慦㝣晦㕦㕦㝡敢挷摦㔹㌹昱摤㙦㝤敢慦㍥昵敡㕢㍦搸㙦扦㤶扤晥愳戹搷㥥ㅢ扢昲摣㌳昶昹〷㑥㍤昷挴攵挷挶ㄶ㙥ㅡ改敡敡改戹㜷攸㙦㙥扤㙦昰㠵㘷摥㔰㝦昱て〷㍤㈵搳挵ぢ㥡㠷挱㘹换㌰扥㡢〲㠶挱ㄱ扦慦挳攰㜴㘵愱ㅥ㡤ㄶ㙡ㄲ㠸〲㥣㜱づ㐰㉡ㅥ㘹慥攸晤ㅦ〵㤲㔸扡 | I30: 㜸〱敤㕣㕤㙣ㅣ搷㜵摥扢攴㉥㜷㤶㕣㤱ㄶ㘵换㜲ㅣ㥢㠹攳昸㠷㉡㉤捡㔶㙤愵㔱ㄸ晥㠸ㄲㄳ㑡愴㐵㑡戲㙢愵昴㜰㜷㐶ㅣ㘹㘷㤶㥥ㄹ㔲愲攳搶捥㕦摤戴㐹ㄳㄸ㈸㔲㈷㙥㙤愷㝤㈹搰ㄶ㈸㔰扢㌶㥡戶㈸摡㈲㐵攱〰㝤㐸ㅦち昴挱つ㡡昶愱㐵愱愲㉦㜹〸㤰㝥摦戹㌳扢戳㑢敥㤰㕥摢㉤㕤㜰散㍤扣㜳敥扤㌳昷摥昳㝢捦戹愳㡣捡㘴㌲㍦挵挵扦扣扡㔹戸㝤㘱㈳〸㉤㜷㘴戲㔶慤㕡攵搰愹㜹挱挸戸敦㥢ㅢ戳㑥㄰㜶愱㐱㝥挹㐱㝤㤰㕢ち㥣愷慤挲搲扡攵〷㘸㤴换㘴ち〵㈳㡢㝡㍥㠴扦㠱昸挶㘰慦扥㙥㠰挵挹㠹戹攵㉢㜸敡㐲㔸昳慤挳㐳ㄷ㜴摦ㄳ愳愳㈳愳㈳㐷ㅦ㍣㍥㍡㜲攴昰搰攴㕡㌵㕣昳慤ㄳ㥥戵ㄶ晡㘶昵昰搰晣摡㜲搵㈹㝦搶摡㔸慣㕤戵扣ㄳ搶昲㤱〷㤷捤㠷ㅥㄹ㝤攸搸㌱晢昸昱㐷晡昰敡捣搹挹㠹㜹摦戲㠳昷攸㤹㌹づ昹愱㈹慢散㜰㙥㤶攵㍢摥攵㤱挹〹晣㥦ㄸ㍦敥ㅥㅥ㔹㔸戱慣㤰慦戶㝣换㉢㕢㠱㠱㡥扤敥㜸㄰慣戹慢㕣㍣挳㥤挶㔴换㘶㄰收摣㐹慢㕡㌵摣昸愹〵㜷づ㙢㔷㌵㌷晡摣〵换ぢ㥣搰㔹㜷挲㡤扣扢㠸〷㔵㑡敥昹挰㍡㘷㝡㤷慤戳愶㙢攵摣㔳㙢㑥愵㕢㕦㤹慥㝢攲㐷㈴〷㈶搳ㅦㄹて摣挹ㄵ搳㤷ㄱ〵㕣㤸㤴戶搳㝥戹戹敤㕤敤㥦换愱换ㅢ昸捣扢摢户㐳捤〵搳慦户ㅣ㙥摦㌲㥡㝣昳〸ㅥ㘸摦㍥戱㐶捤㝤敥㙢摦㐷㤶戲戹戵敡㡤昸㕢㔶ㄴ㤳㌱昲〴㍤〴〵〲ㄲ搰㈸ㄲ昴ㄲ昴〱愸敥晦㠶㤴㈴㍢戲㉡扢㘴㘶㤷㤶戳㑢攵散㔲㈵扢㘴㘵㤷散散搲攵散搲㑡㜶挹挹㉥㕤挹㉥㕤㐵㥢昸㉡昴昴㘴愳敢挲㘳㥦晣㉦攷昹搷㑥㝥攳㡦慦㤷㝥晢㜷㉦㤵晡昶愱搱愳搱愰愶㝣昳ㅡ㔸慤挱挵㐷㐷㡥昰扦敤愵〲㐲㘱ㅦ戳ㅦ戶㐷㐷㉢挷㡥㤸て㥡㌹㑥㉢㠵昸㑤㡣㌲㠰戶㝤昶㐵挷慢搴慥〹敤㙥㥦㌰〳慢戱㜰挳㔱摤㐴㙤捤慢〴ㅦ摡扡㜲㈱㌴㐳敢戶搶扡挶㐳㌶㜵㕢㠰㔸㔹㠱扣敦㡥搶㙥ㄷ捣敡㥡㌵㝥摤搱搵ㅦ㙥愹㜶攷晤摡㜲晢摡㘹摦㝡慡㕥扢㘹㐴攳㔰㙡敢昲散㑤戳搴㔵㝡㕣㐳㤳㉢戵挰昲㘴㜸挳敥扣㔳扥㙡昹ぢㄶ㔵愲㔵㤱愹摥捣慡㐸敡㠷攷㍣㑣ㄴ搲㕡昹㘸ㄲ㙢㥦扣ㅥ㐲㤸慤ち挶扢㙡昹攱挶愲戹㕣戵㙥㘹㙡愲摦㠹㡡㐳㑤攸改㕡㜹㉤㤸慣㜹愱㕦慢㌶搷㡣㔷搶㑤㘸㥡捡㤹㕡挵敡敥捥㠸㔲㠰挲敤敡㔲㉡㜳㝦㝢㔹㄰㐲㈴㐸㑣㐱扥戵㤹敤㐶捥㘱㜶㤸㐵搵㈲㑦㘶㍦戶捤挳㌸㕥搱㌱㈹ㄲ㤸㤸ㄳ敤〷㕦㝡敦㌶㡦慤㔳敥晤㙤㥣捤づ㐶戳㍦戹㙥㜹攱㘹搳慢㔴㉤㍦搵晡㈹㡥挸攸〷挸摤㠰㐲㘸扢㝡㌴㜵敡扡摡挸㕤㜳㉡攱㑡㝥挵㜲㉥慦㠴挰挱㐲ㄶち㕣摡㑤㤷㜱ㄳ㔰挶㝥㠲㐱㠰㘲㌱㤳㍦挰㐶昹㈲慥㑣㡥摡㈹㐵㤶㥢ㄴ㌹晢㌵挹㜲㥦㍤敤㔴㐳㑢㉢攵㝥ㅢㄴ搱㔶㑤挸㔷㈲㡢晡㘶㔹ㅢ㡣〳昶㈴戸搴㜴扣㜰愳㈱户㥢愴㐴㌳搱㥥㉥搸㜵扡㠰慡愰㔹ㅦ愴挸ㅡ㤸愶㐵ㅢ愴㌷㑥㌰ㄱ挵㈰挵戲攳挹捤㑣挶昶㈹㍡〲敤㤳㑣挸搶㐷摡敢〸㌲晢㘶㈶㘵愷戶昲戸愷捤戶昲攵戵㌶扢ㄹぢ㘷摣㐲㜰㤰攰㔶㠲㐳〰敡㕦愱攱愸攵㔰㙥扥㡣て攱摥戸㥤攰挳〰搰㑦〶㜵㑥愴慡攸㐳敤挴㡦㘴扢ㄲ晣㘴㜱㡡戵㉡愲㘷㕣昷㌳㑢慥㄰㍡昲㍡㜷㠷慤敤ㄶㅢ晢昱昶扣㤹㥣づ㌹㌲愵㘹㜲慥摢㌴㑤㉥〴㥢㜶㘸户敥㐴㔷㘳㠸攰㈳〰㐵攳愳㠴㌰㉥㜴㜸㜷收搱搳愵晣㐰戸㐵摡ㄹ敡搰挰㐷㡣捣㉤㐰㡡㤲摢戴㝤搹昳愱改づづ摢ㅦ㜸ㅦ晡㜰㝢昹㡥㠸摥㘲㌷昷散づ攳㐵敦搰㡢扥ぢ攲愵晥愹慤㡤戹ㅢ搵挶挷〹敥〱㘸戱㌱摣㝤扦搳㐸㠱戸挵㙥㠲㜲晢ㄹ㜵ㄱ㉦㜷㜱㘳搵ㄲぢ搴㘷㉦㥡晥㘵㉢㐴〴㘳㘶ち扥㜰捤昷慤㉡㌶戵ㄵ㐱㜰晦㜲戰ㄹㄹ㑣晢㌵㤷昸㍤ㅦ㌹昸㐰ㄸ㠶敥敥㙣㔷愶挵㐷㑥昱㌵ㄳ㌱愷〴攷搰〶㍦搸㕥㐹㈴㍡㌵戳ㄷ晢愵敦㉦昷㌴㐹〷㥡攴㍥㉣慢㜱㍦〰戴㠴晡㠷戶ㅡ攵㌰㥢晤㡣㌴㙢昶㔸ㄹ攱㑢搹㥤戴挴㄰㌷改㤱㕥ㅤ戰㥤㐰晣㈰㈸戹ぢ㡥㕢㔷ㄶ扤敥扣攵㤷ㄱ㕢㜰慡㔶㔱㠷㘵愹㙡昶㜴挵〷㐴㔷㜴㜵㙤摡㑦愷挴搷㠴㑦㕡戴㐴慡戴愷㔶愶散挵ㅢ㑣挵㌰㈴㤵㑡㑡㘸愸慥㠱挸㜹㙣扢愷㘲㍡㔰㌱て㘰攱㡣㈳〴愳〴㐷〱㜲㍦㠰愶搹改挲㌳ㅤ搶戳捥㤰昶搲㔲愶㐰㌲㐸㠸昰慤戶捡敡ㄸ㕦昳戳〴て〳戴戸㍦っ㐰愶㌰愲㤰㍣挱㠸㤲挶戰㉦㌸搶㌵昲挰㍥ㅢ㠹愵挹戵㈰慣戹捣㉣㤵散愹摡搹㕡㌸攵〴慢挸㐴つ摡㔱攱攲㡡攵㠱扢㝣昸㍥㉤戸摡敡慡㔵㌱散㠵摡ㅡ㔴摢捣搴㙥搸㤸㘳㌹攰㑢捡摥㍣慢㜰㜵戶㍦挶㈳ㄴ㔶㕡攲慤㡣挶敥㈸晡捤㑤㕦㝦㘳㐵ㄷ㥤戰㙡昵摡㕡攸㔸㉥搸㔸㐵㘴づ㉡㍤昶攲㡡㙦㔹㔳㈵晢㤴敦㔴慡㡥㘷㤱ㄸ昰㌱㤹慣㥢戵㉥㈳㑢㌰㕦㘳づ戰收㤵散㐵摦昴㠲㔵㤳〹挵㡤晤㑤㜷㤲ㄶ挹搹ㄳ㡥ㄷ攰㌵㐲㐵㤶晢敤㠵㤵摡㌵㘴㙣搷㕣敦㤴戹ㅡ散ち慡㤰改昵㈵愴㔱㔹㤵捤慡㐲戶搰㈹㝤戸㈱捦㘴㈸㝢摤〴㐲慢㑣㡥㌱昳ㄴ敢㑤扦㍥捡搱搰㑦攷㤸晡㤰㍤慡㈳扢㔲戵㌰㈵搵㌸捥㍥㥦〰昸捣愹昳㌳㡤捣摣扢捡㔹攷ㄸ攵㑦搱昱挲ㄶ昵㐴〸㘳㜴晢㌴慢㄰㐷捥㠱〴㠲攲扣㙢㘵扦愲㉤㙤挸㝤晢ㅡ挵㘹㘴㤲晡散㔹㜳搹慡㈲ㅦ敤㥡攱㍥㝤㐳㌷搶㌵慢㐱㔴㌷㔹㜳㕤㤳慣㐵戶㕣㈸㥢攴攰昱戵戰㜶挶昱っㅢ㐰昸㉦㐲㤹搷㠱㌲慦ぢ慡捦㍥挷搴愰㤴昹慣摡㘵搳㜷挲ㄵ搷㈹ㄷ㜸挳昴摤慥攰㐹〸㌹㌵㙦㝣挵㍡㘳愸挵㥢㍦て㤷㉤ㄸ〱戹㐷愰㐷戹㜴㈴㍦㌸㌷慢昲昸㑦㜵ㄸ㔸㠲㠲㤱㐸愹昱㐹㍣㉤㈷愷㈳愰㜲攴扡ㄱ㥦挱戸昱㉣㌰㕡〹㤱敡㈹㉣㠲愸㘰㐲挹㌳挴㥤户捦㝢㑥〸敡㤱㘲搳㑥㌸ㄵ㠰攴〰㈸捡昶昶㌶愱㙡愲搳㜰摤㉡摣戹戹慡挹㑣摣戱戹㍥㘹㌷㍥戶㐵戵戶㈸〹㐳戲㕤㈳戱㉣㕢㡣㜱㌷㤹ㅡ㈵㠶㍢戶㌶㉡㉤㙣摡㔸㜷㙡㤱㜷㘱㤸㠴㘷㌲挶愷㠴㔱㤰攸㡤㙣ㄴ㘳昶改散㤱挸搸搰〷㈸搲㑥㘹㕣㈹㑡〹捥攰搸㐹挵㉡㐶㜷㤰敦㝤㔱㜱㙥㉤㙣慡㌱慦て㐶㌵攳搵敡㥣〷㉦愱㙣晡㤵㕤㈲搲㤸㥢戶㌰㈲㥤㥤㕡㝦扤扣〹㐱㡣挴㤰㘹㤱㤴㌸㌰挴㄰挲㤵挸愸搲㍢㉢㜱愹敢攸〲敦捥㔸愶㈷ㄴ㔸〸㉢㔳搶扡戸㘱つ㑦㝥㔰㍡搴㜷㡢愲㐷つ㝢㝣㌹㠰㐹て愹挷愳㤲〸戸㘱㥦㘳㔸ち㠷ㄸ愰㜶愳搲㝣㌹㐴㙡户晥〰敥っ㜶て㜵戰㈲㍡㜵㐲敦㡣ㅡ㌴㥦挲戸捤㤳愰散㜴㐸㔱㈸㔲㕢慥晦ㅣ㔳摦㝥㤱搷敦㡤㘵攲㐲㈴㐴㑣㜷愵㜸て㈰㙥㌲㌳㐹㈹ㅡ㡣ㄳ收㕡戳㠹搲敡㡢㜱㜴㌱㑡㜴昹晣㄰愷㜸㤸换敡愷搸㔴㜱捥㉤㜴㘰㑤慢ㅢ晢散ㄹ慦㕣㕤慢㔸㘲㡡㘳㕤㉤ㄶ㜹㔷搰㑢㡥〰㙡㘹㑡㔹㤷㘸㔱㘶戰㤵攲㤴㐹愴捥晤㙥㘳っ摤㐵挹攱ㄹ摡昴㌱〱㤹ㄲ㤶㤳㠴搸愶㜳ち昴て昷㌷づ㌰挸攱㌹愸戴㑤㈸敡戲㔹㥣挷慢㘷㤱㐵摡ㄲ捤㘶㙢戳㌵晡散〹搴㘹㐷愳㜶〵㡤㌰㑦慤昰昲㜹㌸㈳ㅤ㑡〷ㅦ㤲戹ㄱ㘵㜷㙦㍣㉢户㤹ㅢ㈰㠵㔰㐰㌱挷换㕤㔰〶慢ち㐱愲挳㥤㙤㜸摤㡡搹㕦㝡摥挶㌸㠰㘲ㅡ㤸づ㉤㕡㙡〷㘷ㄲ攵敤ㅤ㥣㍢搱㉡㈵㐳㥡㑣愶㌲㐷㌹㠸㠰㍤㠸〶㘹攲㐶㝡戱〶㈳ㄴㅥ㤰㠳㘱昱搹挴㘱ㄷ㕢愰㥡㝦㑢ぢ㜲摥っ㜱晣挵㍢搴㠲ㅥ慦㔴攸敥㈲㍥户㉢愸㡡愳ㅢ摡ㅤ㍤搰㜲㈸㑢收㐴晦敥慥㤶㡡攸戰攰搱愹㤱搳㘶㔸㕥㔹〸㌷昴挱慤㑥㔹㈲昷㍤挴㈳戶㝣㍢㝤收㙥㡦〷㔱搷戹昶挵慢㕥敤㥡㈷攳捡〵㍣昵〷づ挱ㄱ捡ㅥづ戲㤸昹㈹晥㤳㉢㥢挹晤㈹㥥戸㤳㘱昳〱㡤〰〹㥦㈳㔷搱㤸挶㕦㈶愹㠷昰㌷㠵㔷攰扦搷㑦づ㤰㔷づ戴昰㡡㈸㠳㍤㘶昱㉥扦㘷捣愲摥〴㘹挹㌰㈰㜸㝣㐸㈴㥢㔱㙦攰㠶㐴〷つ㐰㌸㘳㠶㄰攴晢〸晥愶㤰㑦ㄴ㝡㜴搴㠳〷㐳晥晦㔰㉡㤶敡㉤挵敡㝦㐱愸搵敢㈰㠶㤰〹㌴愹换愵㝡慤㤹㑣戳㥡㑣㡡㐷㐲㐴㤶捦愰㄰㕦㌹愶㙡摦㔱㔲㥣昳摡摢㡣扥敦㠷㝦晦て㌷愳㜳ㄱ㜳㠸扦㠶戴摢摤戸慦扢ぢ㕤㥢摣〵㈶昲挵㕤㤸㐷㐱㌱愳慦摤㠵㈸ㅥ㜲づ㠸敤摤〵收昹㔲㥣挲㐴摡㌵ㄱ攲攰㙥散ㄶ㤷戱戲搳㌸㠴㙢〵挸敤挳㠰〵㤳㠸㑥ㅤ摣㡣㥥㌷㝤搳㍤㈴昸㔳扥〵挳收㉦攲㔴户㜴㘱㡦摢戶慣㤱㑥㕢挴㉤攲㠸晢㕥㙣㘵㘷㘷搹㐱㈹㝤改㔰扥㉡愸晣扢㠸㥡㈸敥㈱㌲㥦㍦昰㠷愷晥昹改㉦㡦昱攴㕡挴慢㌹愶㡡㍢㐹摦搳慦㐰㠲㌷㜱㘸攴㘶㝥愴㜳〶㥦㉢㌹慢㔵㙢挲昴挵㈳ちっ㌷㉥㙡挶㑢㌰愶㘶扥摤攰㙥攲っ㠴㜶㌷㐷㕡㐲㥦昲㤱㤳㠴ぢ㐷ㄲ〳㤷昸㕥㥣㐲㔴㙤㡤㔹㠷㥥㘷敥て㘰㡥摥攱㐰㥡㍤㐶敥㐰㜹㈹昵晢戱扤搳㠸㑣收ㄸ㉣㥡摥㔶㉡ㅥ〱㠸戵ㄴ㜲ㄱ攴㤰攴愶㠶㠷〳㐴㑢㥤㐷㈱昷〰㐰㑡㤶慤㌵摤换搸挰㥥ㄲ戰敡〷〰㍢晣愰〵慢〸㉡挶㜱昹㑥㜷户っ〵挴愶㠹㘹㕢昱㘹㉥愰㈰ㅢㄹ㈲㐶㘳散㐵ㄴ攲㉢㜷ㄴ愵ㅤ㠷愶昸㤲㤲慢㤳㜰㕡戰㜳㉥攳㙥㐵昷愴户㠶㔳㈰戰㌳㜹㌱ㄸ摥㝥愲戱㌹㤵㝣㥤㙥㕡搴㈸挲㝥㕤慣㜷敡㡤慡㘰戳扣㐳搸愱㈲ㄱ挸慦㠶㔸㍦摣㜸昴捤慤㌵戴㜱㕥て㈶挸ㅦ晣慦㍢㔲〴ㅢ㙦愵挴㐰挳敥愸㔵㐱ㅦㄵ㝦っ㕤㌸改㡣㌲ㅡ㐵戹㔷捣㔷挷㤲搵㤵摤㘴晦㤹挹ㄶ挹㝡㥣扤㤹搲㙥戲晦㑦〰戱慤晤㔷挷搹ㄷ㍦攳㔲㔴攰㑤㡥戹㤴㙤搳㌷㕣ㄱ㐴戹㤱挸㤱㑤戲㈱㐵愶扦㜵㘹〱ㅦ戲敡㙡搱攰㠸㠱㜵户ㅥ㤳愸昷愵㙦摢摢㔶〱㌲㑦㤴晢ㅤ愸愰戶晤㥢昵㔶扣搳捤晦〲㍡ㅥ㌸攳㤴晤㕡㔰戳挳愱〵㈴㠰㠷昸ㅤ㥡つ㥦㘷㕣扤摡慡搴敥挲㑡昴㍤㠹㍥㘷攷愰戰捦㕡攱㝢㤵㤷㘴㤶㘱㘷㔹つ㝥㤳㌴㤰㐸㌵搱㍡〴㌷搹㡦慥㤹㔵㝣挶㍡㠷戸㘷㐸搴慥㌰㜶㍡晡摣㝡㕡㠳㑢㠷昳㕡㥦㐵㙣挸慡㡥㈰㔱㈶㔳㜸攲㜳㕣搷搶㌵㘸㙥ㅢ捤㉤㘰换捥攲㙦挵摣换愰改捥摥搲捣㌲㝣㈷扦㑥㉥ㅡ换㠴搸㕣㡦攱敦捥㠳戵㝣摡㈰昸㍣晡戸㥢㐱戱攱㉡㐲㘹㍢挸㠴㤷搱㔵㡤ㄳ攰㘷㔴愲〲㙦ㄴ㈳㝥ㄴ㐵昵ㅤ㑣㡢〲㠰㌲昶㠰〰敤戹晡㐵㌴搳ㄱ〴㌶挶㐵慥㔶搳㈸挸昳㔷㔰愰摦挶㥦㘲㈰㐱戰㑥ㄲ换㝤慢㘰慦㈴戰〳昱收㔵㜱㤷㐲㠶㉥慡摦挰慢㕥挶㑦㉦㕣㤵㌸散㕡㘴㌷㠲戲ㄱ昷㐰㌹愳戸ㅢ㤱愹扣㠰づ昵愹搴㠰㙤㍦㤵㙦愲改收愹搰㡦㤰攱㈵㥦㍦㄰摢㈱挳㐷戵ㄱ㄰㠴〴㙢〰〳戱㌹敡愷㠶愵摡捡敢㡣挵㥢㈴㌲慥扦㡦晥扥㍤昶㠳户㜸晤挷㤸ㄲ㥤㡡慡收㔹㔰愷捡㉣扥㥡㥣挵㜵㘰摢捦攲昹慤㘶㌱㜰〹㝤㌸ㄲ攳㘹㠰㔲㤷㈲摢挹慣㍥㡦〲ㄷ㤴㍦㔵㡥戱㑤㜳㈵㡦㐸摦㕦㐴愱搴㌵㐰㥡㌲挰㘳晣ㄲ挱戳〴捦ㄱ㝣㠱攰㡢〴㕦〲㈸㘵〷㐸㘶㘹昸㘵㈲扦㐲昰换〴捦ㄳ晣ち挱㔷〱搰㤰㤴㤷㠶扦㑡攴慦ㄱ㝣㡤攰敢〴扦㑥昰つ㠰㔲㔶㤱攸㌲散㙦愲㄰て㍢㐷ㅡ愴㝣慥㈴㕥ㅥ㡦㜶昲ㄵ㜹ㅤ㕥捥㙢摢㕥㜰愳戸昲慥搰㜰㤸ㄲ扦晦㙤㙢㤸昲ㅤ㥥㔹㔰戵㤸㈷㑥㥦㡥愲㝡㤹㙣㤴㐵〳㑦敡㘴〱㜹㤸ぢ愹扣戸昱ㅦ扤摥〸㌶愱〲ㄷㄸ㔷㌷㈶慦㑢㘳㌷㙥㝣ㄴ摦㤹㐹ㅢ㍣㔹㕦㙦挷㡤㈹ㄳ搲戸ㅡ㌷晥昷愳㠷敡㡤㘳ㄱ搰㑦捥㤱㍦㔳㍣㜶搹挳㈴扥㌹敦㐷昳㥣㑤㉦愰搷搶㘸敡㝦㐹㠶㔷挵て攸挳昱ㄶㅦ㕦㝤捦攲戴ㄶづ戵挰㔴攸㝦晣㘱〶愷戸愶捣搰挴㐷摤敢㐸㥦晢㠶摣戱㜳摥㥥昳㠱攸戱㘷〲散っ㉢扢㡡㐵攰搴㜴敢昵摤㈶捤㤰攲〰㌷搶㈳㑥晢㘵㜹㉡愶㌳ㄳ㈸愹愲㙥㜵㈵愶㙣收戹〶捦ㄸ摦〲㜱愰愱〱㔹㌰㝥ㄳ㔰愷㤶㜸晥㍡㌳㐰搵㈳㝡攵摢慣昸づ挱㑢〰㐵㐵㍤㐳㍥挸晦ㄶ㐰㝦晣㑦㙦っ慤㑢搴㈷慢㤶攳㤷㈵搹挸㜸㤹ㅤ㕥〱攸㐲㈰㕡㐵㑣㔸㌴㕥〵㈶昱搲ㅣ㜵搶捦戵昷慡戹㘹㡥晦㌹〰㈴㐸㥢扥晢㍦㠹敦昸㌷昸攰㉥晣㌳㈶㌹搹〲㜴㘷㍦搱搹戳挸㘸昴摥攵昷㌹㑣攸㕤㍣㠷ぢ摣挸扢昰㠹搴㡣㐵㐵捤捣改慡㑢㜸㍥摦㐱攷扥愸㥥㡢搱㑦㐴㘸ㅥ㐲㈹慡㉦挴攸㥦㡦搰〷〵晤挵ㄸ晤㜸㠴扥㔷搰搴昰昲散挷㈲昴㝤㠲愶愲ㄷ昴挵〸慤㐷昲㤵ㄸ㝤㈱㐲敢㤱搰ㄸ㐸敢昳ㄱ㕡㡦㠴收㐱搰㡢ㄱ㕡㡦㠴〶㐳搰ぢㄱ㕡㡦㠴㈶㐴搰攷㈲戴ㅥ〹㉤㠹愰ㅦ㡤搰㝡㈴戴㉤㠲㥥㡦搰㝡㈴戴㌶㠲㥥㡢搰㝡㈴戴㍦㠲㍥ㅢ愱昵㐸㘸㤱〴㝤㈶㐲敢㤱搰㐶〹㝡㌶㐲换㐸〶㘸慡㠴捤㕦㐳挱㜸㥤攰㑦〰㡡戹㙦〱敥㔸㑥㐹攴づ㍤扥㌷搰㔵㔱昸昸っ攳捤愸挰ㅢ㐵挹㤳㈱㑦㐷㐳愶户㔱挸收ㄵ愵㔱㉡㑥㐶ㄵ㈷愴㐲㈹㑡愸㔴㑣㐵ㄵ㘳㐰ㄸ㝦〶愰㈸㠱㥣㤳昱攷扣㝢㤵㠰㜷㝦ㄱㄵ攴㠵㕣〳改晥改㤶ㄷ㜲㕤愴㘲慣攵㠵㕣㉢愹昸㔴昲㠵㝦挵㠷捡挴㔰㘸㜲㥡〶㌸㐱㔹敦扦㐱愱搴搵捦戱㕤挴㉦㝢㕤㤵㥦慣㍣昹攴㡦晢扢㠷㙥敢㝥散搳㝤㉦扥晤㜷㍦㝡攱㠷㤷㑥晣摢㑦㕥㝡改㠷晦昲挲㕢㍦昹摥昲㠹敦㝦昷扢㝦晤㤹㤷摦晡搱㝥晢㤵散敢㍦㥥㝤攵㤹搱慢捦㍣㘵㥦扦晦搴㌳㡦㕦㜹㜴㜴晥愶攱慥慥㥥㥥㝢〶晦昶搶㝢〷㥥㝢敡つ昵㤷晦㜸搰㔳㌲㕤扣愰㜹ㄸ㥣戶っ攳晢㈸㘰ㄸㅣ昱晢㍡っ㑥㔷ㄶ敡㤱㘸愱㈶㠰㈸挰ㄹ攷〰愴攲攱收㡡摥晦〱挳㌵㔷戱 | N30: 㜸〱敤㕣㕤㙣ㅣ搷㜵摥扢攴㉥㜷㤶愴㐸㡢㤲㘵㌹㡥捤挴㜱晣㐳㤵ㄶ㘵慢戶搲挸っ㝦㐴㠹〹㈵搲㈲㈵搹戵㔲㝡戸㍢㈳㡥戴㌳㑢捦捣㔲愲攳搶㑥㥡㌴㑤昳搳挰㐰㤱㌸㜱㘱㍢つ〲ㄴ㘸ぢ昴㈱慥摤愶つ㡡戶㐸㔱㌸㘸㔱愴て〵晡攰〶㐵晡搰愲㄰搰㤷㍣〴㐸扦敦摣㤹摤搹愵㜶㐸慦敤㤶㉥㌸昶ㅥ摥㌹昷摥㤹㝢敦昹扤攷摣㔱㐶㘵㌲㤹㥦攳攲㕦㕥摤㉣摣戶戸ㄱ㠴㤶㍢㍡㔵慤㔴慣㔲攸㔴扤㘰㜴挲昷捤㡤㌹㈷〸扢搰㈰扦散愰㍥挸㉤〷捥搳㔶㘱㜹摤昲〳㌴捡㘵㌲㠵㠲㤱㐵㍤ㅦ挲摦㘰㝣㘳戰㔷㕦㌷挰搲搴攴晣捡㘵㍣㜵㌱慣晡搶愱攱昳扡敦昱戱戱搱戱搱㈳てㅣㅢㅢ㍤㝣㘸㜸慡㔶〹㙢扥㜵摣戳㙡愱㙦㔶づつ㉦搴㔶㉡㑥改ㄳ搶挶㔲昵㡡攵ㅤ户㔶づ㍦戰㘲㍥昸昰搸㠳㐷㡦摡挷㡥㍤摣㠷㔷㘷捥㑣㑤㉥昸㤶ㅤ扣㐳捦捣㜱挸て㑥㕢㈵㠷㜳戳㉣摦昱㉥㡤㑥㑤攲晦挴昸㜱昷搰攸攲慡㘵㠵㝣戵攵㕢㕥挹ちっ㜴散㜵㈷㠲愰收慥㜱昱っ㜷〶㔳㉤㤹㐱㤸㜳愷慣㑡挵㜰攳愷ㄶ摣㜹慣㕤挵摣攸㜳ㄷ㉤㉦㜰㐲㘷摤〹㌷昲敥ㄲㅥ㔴敥㜷捦〵搶㔹搳扢㘴㥤㌱㕤㉢攷㥥慣㌹攵㙥㝤㘵扡敥㡥ㅦ㤱ㅣ㤸㑣㝦㜴㈲㜰愷㔶㑤㕦㐶ㄴ㜰㘱㔲摡捥昸愵收戶㜷戶㝦㉥㠷㉥㙦攰㌳敦㙡摦づ㌵攷㑤扦摥㜲愴㝤换㘸昲捤㈳戸扦㝤晢挴ㅡ㌵昷戹户㝤ㅦ㔹捡收搶慡㌷攲㙦㔹㔱㑣挶挸ㄳ昴㄰ㄴ〸㐸㐰愳㐸搰㑢搰〷愰扡晦ㅢ㔲㤲散挸慡散戲㤹㕤㕥挹㉥㤷戲换攵散戲㤵㕤戶戳换㤷戲换慢搹㘵㈷扢㝣㌹扢㝣〵㙤攲慢搰搳㤳㡤慥㡦㕥昹搳晤㍦昹晢敦㥣㜹敤摢晦昸挸挵慢摦晦㝡摦ㅥ㌴㝡㌴ㅡ搴戴㙦㕥〵慢㌵戸昸挸攸㘱晥户戵㔴㐰㈸散愳昶㐳昶搸㔸昹攸㘱昳〱㌳挷㘹愵㄰扦㠹㔱〶搱戶捦扥攰㜸攵敡㔵愱摤㙤㤳㘶㘰㌵ㄶ㙥㈴慡㥢慣搶扣㜲昰扥ㅢ㔷㉥㠶㘶㘸摤摡㕡搷㜸挸愶㙥㡢㄰㉢㉢㤰昷摤摥摡敤扣㔹愹㔹ㄳ搷ㅣ㕤晤晥㤶㙡㜷挱慦慥戴慦㥤昱慤愷敡戵㥢㐶㌴〱愵戶㉥捦摥㌴㑢㕤愵挷㌵㍣戵㕡つ㉣㑦㠶㌷攲㉥㌸愵㉢㤶扦㘸㔱㈵㕡㘵㤹敡㝥㔶㐵㔲㍦㌲敦㘱愲㤰搶昲〷㤳㔸晢挴戵㄰挲㙣㤵㌱摥㌵换て㌷㤶捣㤵㡡㜵㜳㔳ㄳ晤㑥㔴ㅣ㙣㐲捦㔴㑢戵㘰慡敡㠵㝥戵搲㕣㌳㔱㕥㌷愱㘹捡愷慢㘵慢扢㍢㈳㑡〱ち户慢㑢愹捣㝤敤㘵㐱〸㤱㈰㌱〵昹㤶㘶戶ㅢ㍤㡢搹㘱ㄶㄵ㡢㍣㤹晤搰ㄶて攳㜸㐵挷愴㐸㘰㘲㑥戴ㅦ㝣改㍤㕢㍣戶㑥戹㜷户㜱㌶㍢ㄴ捤晥挴扡攵㠵愷㑣慦㕣戱晣㔴敢愷㌸㈲㘳〰㈰㜷ㅤち愱敤敡搱搴愹㙢㙡㈳㜷搵㈹㠷慢昹㔵换戹戴ㅡ〲〷ぢ㔹㈸㜰㘹㌷㕤挶㑤㐰ㄹ㝢〹㠶〰㡡挵㑣㝥ㅦㅢ攵㡢戸㌲㌹㙡愷ㄴ㔹㙥㔲攴散搷㈴换㝤昶㡣㔳〹㉤慤㤴〷㙣㔰㐴㕢㌵㈱㕦㍦㔹搴㌷㑢摡㘰散戳愷挰愵愶攳㠵ㅢつ戹摤㈴㈵㥡㠹㜶㜵挱㡥搳〵㔴〵捤晡㈰㐵搶挰㌴㉤摡㈰扤㜱㠲㠹㈸〶㈹㤶ㅤ㑦㙥㘶㌲戶㑦搱ㄱ㘸㥦㘴㐲戶㍥摣㕥㐷㤰搹㌷㌳㈹㍢戵㤵挷㕤㙤㜶㈳㕦㕥㙢戳晤㔸㌸攳㘶㠲〳〴户㄰ㅣ〴㔰㍦㠱㠶愳㤶㐳戹昹㌲摥㠷㝢攳㌶㠲昷〳㐰㍦ㄹ搴㌹㤱慡愲て戵ㅤ㍦㤲敤晡攱㈷㡢㔳慣㔵ㄱ㍤攳扡㥦搹敦ち愱㈳慦㜳㘷搸摡㙥戱戱ㅦ㙥捦㥢挹改㤰㈳㔳㥡㈶攷扡㐵搳攴㐲戰㘹㠷㜶敢づ㜴㌵㠶〹㍥〰㔰㌴㍥㐸〸攳㐲㠷㜷㝢ㅥ㍤㕤捡昷㠴㕢愴㥤愱づつ㝣挴挸摣〲愴㈸戹㑤摢㤷㕤ㅦ㥡敥攰㠸晤㥥昷愱て戵㤷敦㠸攸㉤㜶㜳搷敥㌰㕥昴ㄶ扤攸㍢㈱㕥敡㕦摡摡㤸扢㔰㙤㝣㤸攰㙥㠰ㄶㅢ挳摤昷㕢㡤ㄴ㠸㕢散㈶㈸户㤷㔱ㄷ昱㜲㤷㌶搶㉣戱㐰㝤昶㤲改㕦戲㐲㐴㌰㘶愷攱ぢ㔷㝤摦慡㘰㔳㕢ㄶ〴昷㉦〷㥡㤱挱㡣㕦㜵㠹摦昵㤱㠳昷㠴㘱攸敥捥㜶㘵㕡㝣攴ㄴ㕦㌳ㄱ㜳㑡㜰づ㙤昰〳敤㤵㐴愲㔳㌳㝢戱㕦晡晥㜲㔷㤳㜴愰㐹敥挵戲ㅡ昷〱㐰㑢愸㝦㙡慢㔱づ戱搹㉦㐸戳㘶㡦㤵ㄱ扥㤴摤㐹㑢っ㜱㤳ㅥ改搵〱摢㐹挴て㠲㝥㜷搱㜱敢捡愲搷㕤戰晣ㄲ㘲ぢ㑥挵㉡敡戰㉣㔵捤慥慥㜸㡦攸㡡慥慥㑤晢改㤴昸㥡昰㐹㡢㤶㐸㤵昶搴捡㤴扤㜸㠳愹ㄸ㠶愴㔲㐹〹つ搵㌵㄰㌹㡦㙤㜷㔵㑣〷㉡收㝥㉣㥣㜱㤸㘰㡣攰〸㐰敥㠷搰㌴摢㕤㜸愶挳㝡搶ㄹ搲㕥㕥捥ㄴ㐸〶〹ㄱ扥搱㔶㔹ㅤ攵㙢㝥㤱攰㈱㠰ㄶ昷㠷〱挸ㄴ㐶ㄴ㤲㈷ㄸ㔱搲ㄸ昶㜹挷扡㑡ㅥ搸㘳㈳戱㌴㔵ぢ挲慡换捣㔲扦㍤㕤㍤㔳つ愷㥤㘰つ㤹愸㈱㍢㉡㕣㔸戵㍣㜰㤷て摦愷〵㔷㕤㕢戳捡㠶扤㔸慤㐱戵捤㑥敦㠴㡤㌹㤶〳扥愴散捤戳ち㔷㘷晢㘳㍣㐲㘱愵㈵摥捡㘸散戶愲摦摣昴つ㌴㔶㜴挹〹㉢㔶慦慤㠵㡥攵㠲㡤㔵㐴收愰摣㘳㉦慤晡㤶㌵摤㙦㥦昴㥤㜲挵昱㉣ㄲ〳㍥㈶㤳㜵㜳搶㈵㘴〹ㄶ慡捣〱㔶扤㝥㝢挹㌷扤㘰捤㘴㐲㜱㘳㙦搳㥤愴㐵㜲昶愴攳〵㜸㡤㔰㤱攵〱㝢㜱戵㝡ㄵㄹ摢㥡敢㥤㌴搷㠲ㅤ㐱ㄵ㌲扤扥㠴㌴㉡慢戲㔹㔵挸ㄶ㍡愵て㌷攴㤹っ㘵慦㥢㐰㘸㤵挹㌱㘶㥥㘲扤改搷㐷㌹ㅡ晡改ㅣ㔳ㅦ戲㐷㜵㘴㔷慡ㄶ愶愴ㅡ挷搸攷㈳〰ㅦ㍦㜹㙥戶㤱㤹㝢㕢㌹敢ㅣ愳晣㈹㍡㕥搸愲㥥〸㘱㡣㙥㡦㘶ㄵ攲挸㌹㤰㐰㔰㥣㜷慤散㔷戴愵つ戹㙦㑦愳㌸㠳㑣㔲㥦㍤㘷慥㔸ㄵ攴愳㕤㌳摣愳㙦攸挶扡㘶㈵㠸敡愶慡慥㙢㤲戵挸㤶㡢㈵㤳ㅣ㍣㔱ぢ慢愷ㅤ捦戰〱㠴晦㈲㤴㜹つ㈸昳㥡愰晡散戳㑣つ㑡㤹捦慡㕥㌲㝤㈷㕣㜵㥤㔲㠱㌷㑣摦敤〸㥥㠴㤰㔳昳挶㔷慣㌳㠶㕢扣昹㜳㜰搹㠲㔱㤰㝢ㄴ㝡㤴㑢㐷昲㠳㜳戳㉡㡦晦㔴㠷㠱㈵㈸ㄸ㠹㤴ㅡㅦ挵搳㜲㜲㍡〲㉡㐷慥敢昱ㄹ㡣敢捦〲愳㤵㄰愹㥥挲㈲㠸ち㈶㤴㍣㐳摣㜹晢㥣攷㠴愰ㅥ㈹㌶攳㠴搳〱㐸づ㠰愲㙣㙦㙦ㄵ慡㈶㍡㡤搴慤挲ㅤ㥢慢㥡捣挴敤㥢敢㤳㜶攳㐳㌷愸搶ㄶ㈵㘱㐸戶㙡㈴㤶攵〶㘳摣㐹愶㐶㠹攱㡥慤㡤㑡ぢ㥢㌶搶㥤㕡攴㙤ㄸ㈶攱㤹㡣昱㠸㌰ちㄲ扤㤱㡤㘲捣㍥㥤㍤ㄲㄹㅢ晡〰㐵摡㈹㡤敢㡦㔲㠲戳㌸㜶㔲戶㡡搱ㅤ攴㝢㑦㔴㥣慦㠵㑤㌵收戵愱愸㘶愲㔲㤹昷攰㈵㤴㑣扦扣㐳㐴ㅡ㜳搳ㄶ㐶愴戳㔳敢慦㤷㌷㈱㠸㤱ㄸ㌲㉤㤲ㄲ〷㠶ㄸ㐲戸ㄲㄹ㔵㝡㘷晤㕣敡㍡扡挰扢搳㤶改〹〵ㄶ挳昲戴戵㉥㙥㔸挳㤳ㅦ㤲づ昵摤愲攸㔱挳㥥㔸〹㘰搲㐳敡昱愸㈴〲㙥搸㘷ㄹ㤶挲㈱〶愸摤愸戴㔰ち㤱摡慤㍦㠰㍢㠳㥤㐳ㅤ慣㠸㑥㥤搰㍢愳〶捤愷㌰㙥昳㈴㈸㍢ㅤ㔲ㄴ㡡搴㤶敢扦挶搵㌷㕥攰昵晢攳㤹戸㄰〹ㄱ搳㕤㈹摥〳㠸㥢捣㑣㔲㡡㠶攲㠴戹搶㙣愲戴晡㘲ㅣ㕤㡣㝥扡㝣㝥㠸㔳㍣捣㘵つ㔰㙣㉡㌸攷ㄶ㍡戰愶㤵㡤㍤昶慣㔷慡搴捡㤶㤸攲㔸㔷㡢㐵摥ㄱ昴㤲㈳㠰㕡㥡㔲搶㈵㕡㤴㔹㙣愵㌸㘵ㄲ愹㜳扦摢ㄸ㐷㜷㔱㜲㜸㠶㌶㝤㑣㐰愶㠴攵㈴㈱戶改㥣〲晤挳扤㡤〳っ㜲㜸づ㉡㙤ㄳ㡡扡㙣づ攷昱敡㔹㘴㤱戶㐴戳戹敡㕣㤵㍥㝢〲㜵捡搱愸ㅤ㐱㈳捣㔳㉢扣㝣ㅥ捥㐸㠷搲挱㠷㘴慥㐷搹摤敢捦捡㙤收㍡㐸㈱ㄴ㔰捣昱㜲ㄷ㤴挱慡㐲㤰攸㜰㘷ㅢ㕥户㘲昶㤷㥥户㌱〱愰㤸〶愶㐳㡢㤶摡挱㤹㐲㜹㙢〷攷づ戴㑡挹㤰㈶㤳愹捣㔱づ㈱㘰て愲㐱㥡戸㤱㕥慡挲〸㠵晢攴㘰㔸㝣㌶㜱挴挵ㄶ愸敡摦摣㠲㕣㌰㐳ㅣ㝦昱づ戶愰㈷捡㘵扡扢㠸捦敤〸慡攲攸㠶㜶㐷昷戵ㅣ捡㤲㌹搱扦扢戳愵㈲㍡㉣㜸㘴㝡昴㤴ㄹ㤶㔶ㄷ挳つ㝤㜰慢㔳㤶挸㝤て昱㠸ㅢ扥㥤㍥㜳户挷㠳愸敢㕣晢攲ㄵ慦㝡搵㤳㜱攵〲㥥晡〳㠷攰〸㘵て〷㔹捣晣ㅣ晦挹㤵捤攴晥っ㑦摣捥戰昹㠰㐶㠰㠴捦㤱慢㘸捣攰㉦㤳搴挳昸㥢挲㉢昰摦敢㈷〷挸㉢晢㕡㜸㐵㤴挱㉥戳㜸㤷摥㌱㘶㔱慦㠳戴㘴ㄸ㄰㍣㍥㈴㤲捤愸搷㜰㐳愲㠳〶㈰㥣㌱㑢〸昲㝤〰㝦㔳挸㈷ち㍤㍡敡挱㠳㈱晦㝦㈸ㄵ㑢昵つ挵敡㝦㐱愸搵慢㈰㠶㤰〹㌴愹换愵晡㙥㌳㤹收㌴㤹ㄴ㡦㠴㠸㉣㥦㐶㈱扥㜲㑣搵扥愵愴㌸攷戵扢ㄹ㝤搷て晦晥ㅦ㙥㐶攷㈳收㄰㝦つ㘹户扢㜰㕦㜷ㄷ扡㌶戹ぢ㑣攴㡢扢戰㠰㠲㘲㐶㕦扢ぢ㔱㍣攴㉣㄰㕢扢ぢ捣昳愵㌸㠵㠹戴㙢㈲挴挱摤搸捤㉥㘳㘵愷㜰〸搷ち㤰摢㠷〱ぢ愶㄰㥤㍡戰ㄹ扤㘰晡愶㝢㔰昰㈷㝤ぢ㠶捤㕦挲愹㙥改挲ㅥ户摥戰㐶㍡摤㈰㙥ㄱ㐷摣㜷㘳㉢摢㍢换づ㑡改㑢㠷昲㔵㐱攵摦㐶搴㐴㜱て㤱昹搴扥㍦㍡昹慦㑦㝦㜶㥣㈷搷㈲㕥捤㌱㔵摣㐹晡㥥㝥〵ㄲ扣㠹㐳㈳晢昹㤱捥㘹㝣慥攴慣㔵慣㐹搳ㄷ㡦㈸㌰摣戸愸ㄹ㉦挱㤸㥡昹㜶㠲扢㠹㌳㄰摡摤ㅣ㙤〹㝤捡㐷㑥ㄲ㉥ㅣ㑤っ㕣攲㝢㜱ち㔱戵㌵㘶ㅤ㝡㥥戹㍦㠴㌹㝡㡢〳㘹昶ㄸ戹〳攵愵搴ㅦ挴昶㑥㈳㌲㤹愳戰㘸㝡㕢愹㜸〴㈰搶㔲挸㐵㤰㐳㤲㥢ㅡㅥづ㄰㉤㜵づ㠵摣晤〰㈹㔹戶搶㜴㉦㘳〳扢㑡挰慡ㅦ〰散昰㠳ㄶ慣㈲愸ㄸ挷攵㍢摤摤㌲ㄴ㄰㥢㈶愶㙤挵愷㌹㡦㠲㙣㘴㠸ㄸ㡢戱ㄷ㔰㠸慦摣ㄱ㤴戶ㅤ㥡攲㑢晡㕤㥤㠴搳㠲㥤㜳ㄹ㜷㉢扡㈷扣ㅡ㑥㠱挰捥攴挵㘰㜸㝢㠹挶收㔴昲㜵扡㘹㔱愳〸〷㜴戱摥愹㌷慡㠲捤昲づ㘲㠷㡡㐴㈰扦ㅡ㘲晤㐸攳搱晢㕢㙢㘸攳扣ㅥ㑣㤰㍦昸㕦户愷〸㌶摥㑡㠹㠱㠶摤㔶慢㠲㍥㉡晥ㄸ扡㜰搲ㄹ㘵㌴㡡㜲慦㤸慦㡥㈵慢㉢扢挹晥㌳㤳㉤㤲昵㌸㝢㌳愵摤㘴晦㥦〰㘲㑢晢慦㡥戱㉦㝥挶挵愸挰㥢ㅣ㜳㈹㕢愶㙦戸㈲㠸㜲㈳㤱㈳㥢㘴㐳㡡㑣㝦敢搲㈲㍥㘴搵搵愲挱ㄱ〳敢㙥㍤㈶㔱敦㑢摦戶户慤〲㘴㥥㈸昷㝢㔰㐱㙤晢㌷敢慤㜸愷㥢晦ㄵ㜴摣㜷摡㈹昹搵愰㙡㠷挳㡢㐸〰て昳㍢㌴ㅢ㍥捦㠴㝡愵㔵愹摤㠹㤵攸㝢ㄲ㝤捥捣㐳㘱㥦戱挲㜷㉡㉦挹㉣挳昶戲ㅡ晣㈶㘹㌰㤱㙡愲㜵〸㙥戲ㅦ慤㤹ㄵ㝣挶㍡㡦戸㘷㐸搴㡥㌰㜶㍡晡摣㝡㕡㠳㑢㠷昳㕡㥦㐰㙣挸慡㡣㈲㔱㈶㔳㜸攲㤳㕣搷搶㌵㘸㙥ㅢ捤㉤㘰换捥攲㙦挵摣㑢愰改昶摥搲捣㌲㝣㈷扦㑥㉥ㅡ㉢㠴搸㕣㡦攳敦昶㠳戵㝣摡㄰昸㍣晡戸㥢㐱戱㤱ち㐲㘹摢挸㠴㤷搰㔵㑤㄰攰㘷㤴愳〲㙦ㄴ㈳㝥ㄴ㐵昵㑤㑣㡢〲㠰㌲昶㠰〰敤戹晡〵㌴搳ㄱ〴㌶挶㐵慥㔶㌳㈸挸昳㔷㔱愰摦挶㥦㘲㈰㐱戰㑥ㄲ换㝤慢㘰㉦㈷戰㠳昱收㔵㜱㤷㐲㠶㉥慡摦挱慢㕥挲㑦㉦㕣㠵㌸散㕡㘴㌷㠲戲ㄱ昷㐰㌹愳戸ㅢ㤱愹㍣㡦づ昵愹㔴㠱㙤㍦㤵慦愲改收愹搰㡦㤰攱㈵㥦㍦ㄸ摢㈱挳㐷戵ㄱ㄰㠴〴㌵㠰挱搸ㅣつ㔰挳㔲㙤攵㜵挶攲㜵ㄲㄹ搷㍦㐴㝦摦ㅣ晦攱ㅢ扣晥㜳㕣㠹㑥㐵㔵昳㉣愸㔳㘵ㄶ㕦㐸捥攲ㅡ戰敤㘷昱昹ㅢ捤㘲昰㈲晡㜰㈴挶搳〰晤㕤㡡㙣㈷戳晡ㄴち㕣㔰晥㔴㈹挶㌶捤㤵㍣㈲㝤㝦ㄵ㠵晥慥㐱搲㤴〱ㅥ攳搷〸㥥㈵㜸㡥攰搳〴㥦㈱昸㜵㠰晥散㈰挹㉣つ㍦㑢攴攷〸㝥㠳攰昳〴扦㐹昰〵〰㌴㈴攵愵攱㙦ㄱ昹㐵㠲㉦ㄱ㝣㤹攰㉢〴扦つ搰㥦㔵㈴扡っ晢慢㈸挴挳捥㤱〶㈹㥦㉢㠹㤷挷愳㥤㝣㐵㕥㠷㤷昳摡戶ㄷ摣㈸慥扣㈳㌴ㅣ愶挴敦㝦摢ㅡ愶㝣㠷㘷ㄶ㔴㌵收㠹㔳愷愲愸㕥㈶ㅢ㘵搱挰㤳㍡㔹㐰ㅥ收㐲㉡㉦㙥晣挷慦㌶㠲㑤愸挰〵挶搵㡤挹敢搲搸㡤ㅢㅦ挱㜷㘶搲〶㑦搶搷㥢㜱㘳捡㠴㌴慥挴㡤晦攳挸挱㝡攳㔸〴昴㤳㜳攴捦ㄴ㡦㕤昶㌰㠹㙦捥〷搰㍣㘷搳ぢ攸戵㌵㥡晡㕦㤲攱ㄵ昱〳晡㜰扣挵挷㔷摦㜳㌸慤㠵㐳㉤㌰ㄵ晡ㅦ㝦㤸挵㈹慥㘹㌳㌴昱㔱昷㍡搲攷扥㈱㜷散㥣户攷㝤㈰㝡散搹〰㍢挳昲㡥㘲ㄱ㌸㌵摤㝡㝤户㐸㌳愴㌸挰㡤昵㠸搳㝥㔹㥥㡡改捣〴㑡慡愸㕢㕤㡥㈹㥢㜹慥挱㌳挶搷㐰ㅣ㘸㘸㐰ㄶ㡣慦〳敡搴ㄲ捦㕦㘷〶愹㝡㐴慦㝣㠳ㄵ摦㈴㜸ㄱ愰愸愸㘷挸〷昹摦〵ㄸ㠸晦改㡤攱㜵㠹晡㘴搵㑡晣戲㈴ㅢㄹ㉦戱挳换〰㕤〸㐴慢㠸〹㡢挶㉢挰㈴㕥㥡愳捥晡愵昶㕥㌵㌷捤昱㍦〷㠰〴㘹搳㜷晦㈷昰ㅤ晦〶ㅦ摣㠵㝦挶㈴㈷㕢㠰敥散㐷㍡㝢ㄶㄹ㡤摥扢晣㍥㠹〹扤㡤攷㜰㠱ㅢ㜹ㄷ㍥㤱㥡戱愸愸㤹㌹㕤㜵ㄱ捦攷㍢攸摣ㄷ搵㜳㌱晡㠹〸捤㐳㈸㐵昵改ㄸ晤换ㄱ晡㠰愰㍦ㄳ愳ㅦ㡦搰昷〸㥡ㅡ㕥㥥晤㔸㠴扥㔷搰㔴昴㠲扥㄰愱昵㐸㍥ㄷ愳捦㐷㘸㍤ㄲㅡ〳㘹㝤㉥㐲敢㤱搰㍣〸㝡㈹㐲敢㤱搰㘰〸㝡㌱㐲敢㤱搰㠴〸晡㙣㠴搶㈳愱㈵ㄱ昴愳ㄱ㕡㡦㠴戶㐵搰ぢㄱ㕡㡦㠴搶㐶搰昳ㄱ㕡㡦㠴昶㐷搰㘷㈲戴ㅥ〹㉤㤲愰㑦㐷㘸㍤ㄲ摡㈸㐱捦㐵㘸ㄹ挹㈰㑤㤵戰昹㜷㔱㌰㕥㈵昸ㄳ㠰㘲敥㙢㠰摢㤶㔳ㄲ戹㐳㡦敦㌵㜴㔵ㄴ㍥㍥挳㜸㍤㉡昰㐶㔱昲㘴挸㌳搱㤰改㙤ㄴ戲㜹㐵㘹㤴㡡ㄳ㔱挵㜱愹㔰㡡ㄲ㉡ㄵ搳㔱挵㌸㄰挶㥦〳㈸㑡㈰攷㘴晣〵敦㕥㈱攰摤昷愳㠲扣㤰㙢㈰摤㍦搶昲㐲慥㡢㔴㡣户扣㤰㙢㈵ㄵ㡦㈴㕦昸㔷㝣愸㑣っ㠵㈶愷㘹㤰ㄳ㤴昵晥ㅢㄴ晡扢〶㌸戶ぢ昸㘵慦愹搲㤳攵㈷㥦晣改㐰昷昰慤摤㡦㝤慣敦㠵㌷晦敥挷捦晦攸攲昱㝦晦搹㡢㉦晥攸摦㥥㝦攳㘷摦㕢㌹晥㠳㙦㝤敢慦㍦晥搲ㅢ㍦摥㙢扦㥣㝤昵愷㜳㉦㍦㌳㜶攵㤹愷散㜳昷㥤㝣收昱换㡦㡥㉤摣㌴搲搵搵搳㜳昷搰摦摥㜲捦攰㜳㑦扤愶晥昲㥦て㜸㑡愶㡢ㄷ㌴て㠳搳㤶㘱晣〰〵っ㠳㈳㝥㔷㠷挱改捡㐲㍤ㅣ㉤搴㈴㄰〵㌸攳ㅣ㠰㔴㍣搴㕣搱晢㍦つ搸㔹㉥
A31: Decisioneering:7.0.0.0 | B31: Decisioneering:7.0.0.0 | E31: Decisioneering:7.0.0.0 | F31: Decisioneering:7.0.0.0 | G31: Decisioneering:7.0.0.0 | H31: Decisioneering:7.0.0.0 | I31: Decisioneering:7.0.0.0 | N31: Decisioneering:7.0.0.0
A32: CB_Block_7.0.0.0:1 | N32: CB_Block_7.0.0.0:1
A33: 㜸〱㤵㤸〹㜴ㄴ㔵ㄶ㠶晢㜵〸㐹㈷〱ち㌰㉣㐹ㄸ㐱ㄸ㠳ㅡ㌲㐹㈰㐲㤰挰㘴㈵㄰㐸㔸〳㈲搸㜶㤲ち㌴㜴愷㤹敥〴〱挵㘱ㄱ〲ㅣ㜱㈱㈲㍢㠱っ㍢愸〴㔰㠴〱挲㈲挸攲戰敦㥢㙣㠲っ晢㈲㡢㌸㍡昵㕦㉦㈷㑣摥㙢㡦昳㡥㍥㙦敥晦搹昵㜷㔵扤晦㔵戵㐹㤸㑣愶㕦㡤㠱晦㘲㔴㐱ㄱ搶㝤㤸愷㐰㜷㐶㈶戹ㅣづ㍤愷挰敥捡昷㐴㈶戸摤戶㘱㥤散㥥〲ㅦ〳愸㙡戵ㅢ扡挷搷敡戱て搷晤慤㐳㜴户挷㠰㝣㑤㈶㝦㝦㡢搹搰敢昳扦摡㤳㍦㉣昸扦㉣㔵㌰ㄹ㤴挹㔲ㄵ㤳ㅦ㈶㝦㑣ㄶ㑣〱㤸〲㌱〵㘱慡㠶愹㍡愶ㅡ㤸㌴㑣㌵㌱搵挲㔴ㅢ搳㌳㤸㠲㌱搵挱㔴ㄷ㔳㍤㑣㌸扥㈵〴㔳愸㌱〵㠵ㄹ㔳㡦愴挴捣散㠱挶户改㕥攰㜲敢ㄱつ戳㝥昳ㅣㅦㅤㅤㄹㅤㄹ搳㍣㉥㍡㌲㉡愲㘱㔲愱愳愰搰慤挷攷敢㠵〵㙥㥢㈳愲㘱㤷挲㙣㠷㍤㈷㕤ㅦ搶挳㌵㐸捦㡦搷戳愳㥡㘷摢㕡戴㡡㙥ㄱㅢ㥢ㄷㄷ搷捡ㄷ㕦㉢㈶㔹捦戱攳晢敢扡摢㥥摦㍦㌲㈹搱昸攷愹㘳ㄹ㝦戵㌴㑥愵摢慤㍢㙣㌸㤷摤昴㍣㝣摦晡捥〴㡦愷搰㌹ㄸ慤攸㕥㉥昷㈰捦〰㕤㉦㘸㕦㘸捦搵㥥㔶搰㜸ㅡ㡤昱㡡挶〰つ㜲㈶戹昴扣㍣㝢㡥㕤捦㉦〸收㍦っ㝦挶㕦挶㜱㡤敦摣挳㔵摤㤹㌲㌴㐷㜷㈴改づ㠷搱昲㔴㜳昶昴攸摤㙣昹晤昵っ㥢㔳昷㜵攲㔳㝣㡣㘱㌲㔷㌱昹〴昲㥤㠰收ㅦ愹慢㐶晦㤱㤳昱㍦挷挷挵ㄱ㑦㝦㌶ㅡ㔵㉥ㄸ昷攴搳㑤摣ㄷ㘶慢捤㙣捤㌶㕢㜳捣搶㕣戳㔵㌷㕢昳捣搶晥㘶敢〰戳搵㙥戶づ㌴㕢〷ㄹ捣㤳攱敦攷㘷收搱㌷搱搶㌲㍣㙣㐱㠷愵捥愲挴攵ㅦ㉥慢㈱捥ㅢ㥦㡤捦昷㍢㥤㘳ㅥ㌵㈱㌷㘵挹戵㤸〱㘲㔸愳㕢攲ㅣぢ改㍦昹摤㉡づ㈹㑥㕤ㄷ㜳㉢㜹攵捤摡㕤挴㔹ㄶ㤲晡㤴㙣㥤㕡戴㌵㘳挵挹㝥㘳㉥㝡散㝤㘷㑣挷戸搲㉥挰搲〸〷ㄶ㘷㤸㙢㤰晡㕥㜴挲散攴㡣㐹㝢慥ㅤ㝥㉤挶户扢挰㥤㡦㝢㐵㥣㘶㐲㌲㜵㡡〵挹搴㐹ㄶ昲昷昵戵づ㍦㌱㈵㝤昹扣㠶挷捡㜶扦搸㑥㥣㘰愱㝡搳㤴搱㉢㉦摤改扣㜱改㜳㡦㙡户づ㉥慥㌰ㄵ㑥愶㡥㌱昷㜱戵㝡㍤慦㝣晥㝡挶㘲摢挲昳㐵㍤户〵ち慣㐴㌲㜵㤴〹挹搴ㄱㄶ〲㔶昶ㅥ攱摣ㄵ摡昹ぢ晢㡦㌳㠷㘴㡤㌵㡢挳㉣㙣㥥摣愳搹㤵挶㙦愷㤵搴戹摣㜲换愴㑤㌳挴㈱ㄶ戶愵㤴㍥㉣㙡㤸㤷㌱攷摣㜱扦㌶挳㝦㘹㔵㘱慡ㄹ㤹㍡挰㕣愲戳搱挹扡㈵ㅢ㔲㍥㍦㝣㐳挴㔷扢㕣㈶㤰っ㘴㙡㍦ㄳ㤲愹㝤㉣㐸㘷㙡㉦ぢ㤲愹㍤㉣㜸㌷搵㥣㑣㝤换摣扤㍤戳㔷㥣戶戹ㄳ㈶㕣㙥㄰㜹晤㜱戵て〴㤲㡡㑣敤㘶㐲㌲戵㡢〵改㑣敤㘴攱昵㕥㑤ㅦ愵戵攸㤸扣攴晥收㘶捦戵㙢ㄳ㈷㜶戰戰㌶㘴搶戴㥤摤〶㈵㡤㍣㌸摢㔳摦㤹戵戶攲㑣挵㤱愹敤捣㠹㥤㜹扤敢㝤戳㍢扤昴㌳晦扤㔳ㄷ捦㕢㈶㤰㥣㘴㙡ㅢㄳ㤲愹慦㔹㤸户慦昹㡤㜹ㄷ愶戴㕦㍥㉡晦敥敤つ㘵ㅤ挵㔶ㄶ愴㌳戵㠵〵敦㘷慡ㅤ㤹摡挴㕣㜹搰扢ㄳ挶㉤㉣敥㌸㍦戹攷捣愶㈵ㅦ㑤ㄷ㐸㌶㌲㔵捥㠴㘴㙡㈳ぢ搲攵摢挰㠲㜴愶搶戳攰晤㑣愵㤰愹㜵捣㕤搵挳㕥搸昷昲㤶昶㉢㡥㐵扥戴挸戶㑥〸散㉣㘴㙡㉤ㄳ㤲愹慦㔸㠸㝤晣昷㍢戱挹戱〹㔳㥥捦㤸㜰慢㈴㉡㕣慣㘱攱敤㔳㜹㈷㡦扣㜶㌰攳挳愸㔹㑢户㐶ㅦ㥢㉦扥㘴愱㜷㥢㠷㍢㡡㜲摢愴㑥㍤㍣㈹㌴愵攳敡攰㡡换㤷㑥愶㔶㌳㔷㕡㜷㑥戰㝥戶㕥摡散慢㉦扤㝡㘶扢扢㡢㐰愲㤱愹㔵㑣㐸愶㔶戲㈰㕤扥㌲ㄶ愴㐸㔸挱㠲昷㐸攸㑡愶㍥㘳敥收昱挲㔶㝢㜶敦敦㌴扥㐶攳慣慥㘷㑡攷ち散扣㘴敡㔳㙦㠷㔸敥攵㄰㘲ㄹぢ㔲㜸㉥㘵挱㝢㜸昶㈲㔳㡢㤹扢扦㕦㥦昱㝥晤㤰搴戲昸㉤搶搰㕥摤㌲〵㥥〴挸搴㈲㈶愴㌳戵㤰〵改㑣㉤㘰㐱㌲㌵㥦〵敦愶晡㤱愹㔲收㈶㙦昰ぢ㍤晡㐵㔴㠷㔵ㄹ〷㕥㕣搸㘷扡㔳攰挹㠴㑣捤㘳㐲扡㐳收戲㔰昹づㄱ㈵㉣㐸愶收戰攰摤㔴づ㤹㥡挵㕣晥慣㔵㈳㉥づ㍡㤲扥慣㍣㈶㈲攱昲㥡㌳〲㑦㑡㘴㙡㈶ㄳ搲㤹㥡挱㠲㤴㔳搳㔹㤰㑣㑤㘳挱扢㈹㍢㤹晡㠴戹挳〵㜷㌳㙥〷㜵㑣晢㈸㌸慥晣ㅦㅢ㜶㘴〹㍣戹㤱愹㈹㑣㐸愶㍥㘶㐱扡㝣挵㉣㐸攷㜶㌲ぢ㤵捦㙤挵敡㜳㤱愹て㤹㕢ㅢㅡ扥攸㝥㙡敤攴㑦㙦捣ㅣ㍡㍡慦改㐴㠱㈷㐹㌲昵〱ㄳ㤲愹昷㔹㤰㈲㘱ㄲぢ搲敡㝢㡦〵敦慢慦㤰㑣㑤㘴慥戸敡㈱攱㌷㜱㘰昲晢挳㝥㌶摦づ昸㘹扤挰㤳㉤㤹㥡攰敤㄰攳扤ㅣ㐲ㄴ戱㈰㠵攷㌸ㄶ扣㠷攷㕢㘴敡㕤收ㅡㅦ挸㘸㕣晤㠷攰捥㔳攲搷扦昹㑡晢搱搵〵㥥戴挹搴ㄸ㈶愴㌳㌵㥡〵改㥥ㅡ挵㠲㜴昹㐶戲攰晤昲㡤㈲㔳敦㌰户攴㔸散挷扢挲扦敤昴㐹㐸摢慢㌵ㅥ㍡挶ち㍣昹㤳愹ㄱ㑣㐸愶摥㘶㐱扡㝣㙦戱㈰敤㝤挳㔹昰扥昷ㄵ㤱愹愱捣摤てぢ㍡扦户攳㡣戴㜱愱㐳㥤㙦㉣慥㔹㉥昰㈶㐲愶摥㘴㐲扡ㄸ㐳㔸愸㝣㌱㐴㈱ぢ㤲愹〲ㄶ扣㥢㥡㐴愶摣捣慤㝥摣㘰晢㠹ㅢ愵㘹㥦愴㜷敥㝤㙦攴愵敦〴摥㡣挸搴摦㤸㤰㉥挶㘰ㄶ㉡㕦っ攱㘲㐱㌲㤵捦㠲㜷㔳挵㘴捡挱㕣㔸㥤捣愹搷换敥㘴㑥㥣㌰愶昴㘶晣愶㜸㠱㌷㌵㌲㌵㠸〹改昲つ㘴㐱㡡〴㍢ぢ搲戹ㅤ挰㐲攵㜳㕢ㄱ〹搳挹㔴ㅥ㜳㤶敤て㠲ㅡ㕤㝤愱挳摣捤戱㘳㙢㠵挶㠵ぢ扣㌹㤲㈹㥤〹挹㔴㉥ぢ搲㍤㤵挳㠲ㄴ㥥搹㉣㜸て捦ㄲ㌲昵〶㜳㙦捣扦㍥㙦搵戲ㄵ㠹愳ㅥ㕣扤扤㈸㘲挵㝡㠱㌷㔹㌲㘵㘵㐲㌲昵㍡ぢ㤲愹㝥㉣㐸㘷慡㉦ぢ摥捦搴〲㌲搵㠷戹捣㘶㔹㔱〵愱㠱挹攵㍤敦〷昶㙣㤳晥㡥挰㥢㌵㤹㝡㤵〹挹㔴㙦ㄶ愴㠷扣㕥㉣㐸㜷㘱ㄶぢ㤵敦挲㡡换户㡣㑣昵㘰慥摦搲戹慢㤷㍥㍢㍥㘳㕡挴㤹㤰晤㙢㑤㠳〵摥昴挹㔴㜷㈶㈴㔳摤㔸㤰㜲慡㉢ぢ㔲愲㜷㘱挱㝢愲㤷㤱愹っ收摥㙢ㅤ㥤㌹㍦慢㐹搲挶晤㙤㥢㝥㥦㜹攵㠶㉦㕥ぢ晦晦㔷㘲晣㙡㘲愱ㄷ㜱攳㤷〷㡦慦㌳搵攵昶昸昸愸㝥㤵㐹戳㜹〶ㄴ搸戲ㅤ晡敦㡢昸扣㔵㤸㔶ㅢ㤳挰㙢㈱㡣㔹扥挰昴㈵㕡㜸㈹愳搶ㅡ戴扥㐲ぢ慦㐴搴㕡㡢搶㍡戴昰㐲㐲慤㝦愲戵ㅥ㉤扣づ㔰㙢〳㕡ㅢ搱挲挳㌸戵捡搱摡㠴ㄶㅥ㠵愹戵ㄹ慤㉤㘸攱㐱㤴㕡㕢搱晡ㅡ㉤㍣〶㔲㙢ㅢ㕡摢搱挲㐳ㄸ戵扥㐱㙢〷㕡㌹㑦㕡㍢搱摡㠵ㄶㅥ㐰㠸摡㡤搶户㘸㘱晢愷搶扦搰摡㠳ㄶ㌶㕦㙡敤㐵㙢ㅦ㕡搸晡愸戵ㅦ慤〳㘸㡤㝡搲㍡㠸搶㈱戴㄰晢㐴ㅤ㐶敢〸㕡〸㕤㙡ㅤ㐵敢ㄸ㕡㠸㍣㙡ㅤ㐷敢〴㕡搳㥦戴㑥愲㜵ち㉤㉣㜷愲㑥愳㜵〶㉤㉣㌶㙡㝤㠷搶㔹戴㜰慢㔳敢ㅣ㕡攷搱挲㡤㐶慤ぢ㘸㕤㌴愶㉡戸愲扦㝢摤晤っ㈰愰㤳换㤶㥢㙡换㌱㝥昵昲攳摦扣晣㤳㕣捥挱㌶户敥搶㜰晢㈴戹㜲昵㉥㙥搷㄰㝢慥敥昶㐷愳扢昱㥢㕥ㄵ摣㜸㔵戳㙣㡥㐲摤㘳㉣㉢ㅦ㤳慦㙦愰扦敡㔸ㅤ㥥㝣㔶ㄳ挵㙦㠶ㅤ愴捦扦搶戵ㄵ敥ㄸ㔳㐰㐰愰㌱㕢扥挷㜴挹㤸〴㙥㑣㝣㥦㑡挰㘵〰㍦〰挰扤慡〰慥〰昸㌷〰摣挷ち攰㉡㠰㙢〰㜰㙢㉢㠰敢〰㙥〰挰㙤慦〰㙥〲戸〵〰㉢㐱〱摣〶㜰〷〰㔶㠹〲戸ぢ攰ㅥ〰㉣ㅣ〵昰㈳㠰晢〰戰愸ㄴ挰〳〰て〱㘰㥤㈹㠰㐷〰㝥〲㠰㌵愸〰ㅥ〳昸ㄹ〰㤶愵〲昸て㠰㕦〰㙣㔲〳扦〲㌰〹〳搸慣〶㠴愱㔹捣〰戰挲ㄵ㠷昰〱㠰㕦㤸〵ㄶ扤〲昰〵㔰ㄵ〰〲㐱〱昸〱昰〷㠰㡣㔰〰ㄶ〰〱〰㤰ㅦち㈰㄰㐰㄰㠰㙦搴㐰㌵〰搵〱㈰㙥ㄴ㥦㔰〳㠰〶〰〹愴〰㙡〲愸〵〰改愴〰㙡〳㜸〶〰〲㑢〱〴〳愸〳〰㘱愶〰敡〲愸〷〰昹愶〰敡〳〸〱㠰散㔳〰愱〰挲〰㈰づㄵ㐰〳〰㝦〲㠰愸㔴〰捦〲㘸〸〰改愹〰ㅡ〱㜸づ〰㤲㔵〱㌴〶搰〴挰㐱㌵昰㘷〰捦〳㐰㄰㉢㍥㈱ㅣ㐰㔳〰挸㘶〵昰〲㠰ㄷ〱㈰户ㄵ挰㑢〰㈲〰㈰捡ㄵ㐰㌳〰㤱〰㄰昳ち攰㉦〰愲〰㈰昹ㄵ㐰㌴㠰ㄸ〰搸ㄵㄴ㐰㜳〰㉤〰㘰愳㔰〰戱〰㕥〶㠰㑤㐴〱戴〴搰ち〰昶ㄵ〵㄰〷愰㌵〰散㌹ち攰ㄵ〰㙤〰㘰ㅢ㔲〰昱〰摡〲㌸慢〶摡〱昸㉢㠰㜳㙡㈰〱㐰㈲〰散㘸㡡㐳㈴〱㐸〶㠰㑤㑥〱愴〰㐸〵㠰つ㔰〱戴〷㤰㘶㑣ㅡ戶ㄶっつ摢ぢ㠶㠶扤〴㐳挳㝥㠲愱㘱昳挰搰戰㠱㘰㘸搸㉤㌰㌴散ㄸㄸㅡ戶〷っつ㕢〴㠶㠶晤〰㐳挳㥥㠰愱㘱〳挰搰戰〹㘰㘸㜷㝦晢慦㐹㐳敡㘳㘸㠸㜸っつ㌱㡦愱㈱搳㌱㌴攴㍡㠶㠶㄰挷搰㄰攴ㄸㅡ㔲ㅢ㐳㐳㜲㘳㘸㠸㘹っつ㔱㡤愱㈱㤷㌱㌴㘴㌳ㄵ〸㘲㉡㄰挶㔴㈰㜹愹㐰晡㔲㠱愸愵〲㜱㑢〵戲㤵ち攴㉢ㄵ〸㔳㉡㄰愸㔴㈰㍤愹㐰㠲㔲㠱戸愴〲㤱㐹〵昲㤱ち㘴㈴ㄵ〸㐴㉡㄰㡡㔴㈰〱愹㐰ち㔲㠱挸愳〲戱㐷〵㌲㡥ち攴ㅣㄵ〸㌵㉡㄰㙣㔴㈰挵愸㐰㤲㔱㠱搸愲〲搱㐵〵㜲㡡ち㘴ㄵㄵ〸㈶㉡㄰㑥㔴㈰㠹愸㐰ㅡ㔱㠱攸愱〲昱㐳〵戲㠶ち攴つㄵ〸ㄷ㉡㄰㌰㔴㈰㑤愸㐰愲㔰㠱昸愰〲ㄱ㐲〵昲㠲ち㘴〶ㄵ〸〸㉡㄰ㄲ㔴㈰ㄱ愸㐰㉡㔰㠱〸愰〲㌱㐰〵搶㍣ㄵ㔸昷㔴㘰㤱㔳㠱㠵㑥〵㔶㌵ㄵ㔸搹㔴㘰ㄹ㔳㠱愵㑣〵搶㉤ㄵ㔸扢㔴㘰愱㔲㠱挵㑡〵㔶㈶ㄵ㔸㥤㔴㘰㈹㔲㠱攵㐸〵搶ㅥㄵ㔸㝦ㄸ㠱晦〵晥攲㉢㘸 | N33: 㜸〱捤㕣〹㜸ㅢ搵戵搶戵慤戱挷㔹㉣㤶ㄴ㘸〲㈴㈱㠱挷㑢㜰戵㡣㌶㈰㄰搹㑥㠲㐹㈰〱㈷㠱㍣㑡㥤㤱㌴㡡㐵㉣㍢㐸㜲ㄶ㜸㉣㠱戰㠷戲〷捡㤶㔷㤶戰敦㙢愱搰㠴㐰搸摡戲敦㕢搸愱愵㌴搰戲ㄷ㜸晦㝦㘷㐶ㅡ换㈳㐳昳晡扥慦㑡㜴㜴敥㌹晦扤㜳收㥣㜳慦收ㅥ捤搸㈳㍣ㅥ捦昷㜸昱㤳慦㍡㌲愳㍡㤶ㄵ㡡㐶慥戹戵户扢摢㐸ㄵ戳扤㍤㠵收㐴㍥慦㉦㥢㤱㉤ㄴ㙢〱㔰㍡戳搰ㄷ扣㥤㠵散ㄱ㐶㐳攷㘲㈳㕦〰挸敢昱㌴㌴愸㌵搰㙦㘷扤㝤㜶㐳㘵㉦戵㡥〴㈸㡦慡㤰搴㤳㌴㤰愸㈴㡤㈴㐳㐸㠶㤲っ㈳ㄹ㑥搲㐴攲㈳搹㠲㘴㑢㤲慤㐸戶㈶ㄹ㐱昲ㄳ㤲㙤㐸戶㈵攱昱搵㥦㤲㡣〴ㄹ㍡ち㘴㜶㙢换捣攴㘱㌸㥢㡥㘲㙦摥㤸㌸㝡慥㘹昳愴㐰愰㌹搰ㅣっ挵〳捤晥㠹愳㕢晢扡㡢㝤㜹㘳㔲㡦搱㔷捣敢摤ㄳ㐷捦敡㑢㜶㘷㔳搳㡤㘵戳㝢ㄷㅡ㍤㤳㡣愴㍦㤴搴戵㔸㐰ぢ㠷㌳昱㜸㙣攸昶ㄸ㜹晦搶㤶㔹㜹㈳㔳昸㔷㡤戹〳挷㥣搹摡搲扣扦㔱晣㔷㡤戹㈳挶挴㤰㙤扤㌹㍤摢昳㉦ㅡ搴换㤸㠶摢㡣㔴㤶挱㌷㡣㝣戶㘷㐱㌳捣敥攷㘸戴愲捤㠹㐲愱㉦户㠸㜹搴㙡㜴㜷ㅦ㘸㘴㘴搰㜳㙤㠵攲㉣㍤㥦㉢っ捤搱㝦㐶摥攸㐹ㄹ㠵攱戹㈹㑢㔳㐶户〵㉣㌴攴收敡昹晤昵㥣㔱㐷愶㈹㘷挶戰㍤㙤昴ㄴ戳挵㘵挳㜲㜳ち挶㠱㝡捦〲㠳㄰㙦㙥㕡㕦㌶㉤敡敡昰摦㔳扢㡢㥢㘵㌲㔰戰㈷搷摡愵攷㡢戲挵㄰〶摣戰㡥㜴㤱㘷搱捦㉥愶搴攸㡡㕥㡣㔹㐷㌶㌷摤挸昷ㄸ摤㍣〸㈳㌹愱〲㈴ㅤ㘴挶愱攴㈹晢㜴ㄸ㈵㌱挴㥡㝣㍣ㄷㅥ㐵ㄹつ㌲㘷㜶㍥㡢搳散敢搶昳ㄳ昷换昶㑣ち〵㠳㕡挴ㅦ㙢づ〶〳戱㘰㐸㡢㐷㠳ㄳ㘷㘴ㄷㅡ摤㔹愳㔰㥣ㄴ搱戴㜸㌰㄰㘹搶戴㔰㐴㡢挴攳㥡㌶㜱㍦㝤改愴㜸㈴ㅡ㡡〵戵收㐸㈴慣㐵晤㠴愸㘳㌰戴㍡㤶〷搹〹愴㙥㔲㕢挰慦㡥愳㙣㍣㠸愸㝢ㄹぢ㠳搳ㅣ㑥捥㥡㑥扤愶㌳㔹搳㤹慡改㑣搷㜴ㅡ㌵㥤㤹㥡捥〵㌵㥤㕤㌵㥤搹㥡捥挳㙡㍡ㄷ〲㘳扦ㅡ敡敢㙢慣搷昵昷っ捦敥昵搰愷㙤㉢户㐹㉦敥㍤㈱㕤攷攵㕡㄰㜴昳㑤愵摢㕢㝢昳㜹愳㕢㘷昶㈰㜳戸㔲㙣㤷㉢㈷㔴攰愰摥晣挲㐲㤷㘱ㄴ改㉦㥦㔳㐳㠱ㄳㅡ慣ちつㄲ㍡㌴搷摡㙢㘴㌲搹㔴ㄶ戹㌵挲㙡㈰戹搱挲㜱戱㕡捣敥慤挸㑤户散慢挵换㔳㠳昴敢攷㌷㐷㐸慢挹㤵捤换挱〱改㈲㕥㐲搰ㄸ戸㥦户攸搱㕤㐶㕤搹㝥㙤敥愴㤶敢捦扣慥㐹扣㘸㈹ㅡ㙦㍤昸愸摣㘳㈳昷扢㈳晢搹㐵㡢攷㥥㔰㈳㕥愸搶攳㜹㑢昱敢㈷㐳ㅦ晦晡敤昳愶㕤扦扣攷㙦㥦摣㜷换扥ㄷ晥㡡慦て昷㙥㔴㈷㌰搴攲㔹ぢ㜷㑢攸扡㈷㥦㝤㘴攴捣搳㙦㍥㝦晡慡捦戶㡤ぢ慥昵っ戴㜸愶摡㈱㥥戶ㄴ挷㑣㍦攲㤵㤴㝡晡㍥户晦昶敥摢㠷㠷捥㡤㡡愷慡昵㜸搲㔲㔴㌷㉡㈰㡤晡愳㠵㝢收戵㕢㕢㑦搵㙥㥥㜶摦㠲㥤㉦㍣㘳户挳晥㈲昸摤㈳㡤晡㐳戵㐳晣摥㔲っ㌰敡昱㙡㍤ㅥ戳ㄴ攱㙦㡥昹㌴摣ㄶ㑥㥣户昳晥愷㙣㕡敤摦愵散愹愸㌴敡ㄱぢ昷改敥㑤愷㕤㌸敦搵戶㑢㉦㘹㙥搹收戱收搹㠲摦㠵昲㥢㌵づ㘶㜶挵㙣㡦㐷攳攱㘰㤰昳搹ㅦ〹㐵㈲晤㘷㝢㈰ㅥ㡥晢㌵慤㌹ㄶ㡢〴㠲搱㔰㈸㙥捥昶㘰㍣ㄴぢ㐷愲捤愱㘰㍣㄰て昸晤㜱㜵㜷㡣慣敥〱愲散〹㠲挹ㅥ搵搴㐹㤴敤〵㈲挴㍡换戴〱改挱挵㕡㥡㌶ㄹ㑣攵㐲ㄴっ晡㌵㝦挸摦ㅣ搵㠲搱㐰㌸ㄸち〶ㅣぢ㤱愶昹㘳晥㐸愰㔹㡢㠵㘱扡ㄶ搱〲㜲㈱㡡挰㔰㝦㍣㠸挵㡢㕦愴㤱㜸㈴愸㈶㌰戴摡〲愲戴㠲挰戶㘰㑣㙤愳㙣ち㠸㄰昷㔸戶つ〸〸㤷〳㘹摢㌴㌰㤵戶㐵晤㤱㘸㉣搲ㅣち㐵〲攱㜰ㅣ敢㥤㜳㤱っ㘸㠱㔰㌸ㅡ㙣㡥㐴㠳愱㐰㈰ㅥ搳㠲搲戶㔰ㄸㅥっ〵㥡㈳㌱㝦㌴ㅡ㡦㐷晣㘱㜵ㅦ摡搱づ愲散ぢ攲挵㈲ㄹ㡣慡搳㈹㥣〱㈲挴㙤㤶㜱昵慦愵㙡㤶㥦㤲㥥㜲捤㐷挱㉥戱㙣捣㈶挱ぢㅡ㤹㘸户㕡㠸〱㔳昲ㄶ㑢攱㤹扢晣㠹愹㐳挶㑤扦戱愷戱㘱扢㐳扥摣㔵摣㕣慤挷㑤㤶愲㌲㑡攵㐴㍢㄰㐷昵㠸ㅢ㉣摣㤱捦ㅣ㝡攳㌶㈳㜶㥥㜲慢㌶散晣ㄵ㑢敦摡㐱㜰つ㤷ㅥ㥢つ㘶昷㡡㐴ぢ〴ㄱ挲㐰愸㌹敡〸㘲㌰㡣挸〵愳捤㘶㕡㠵㤱㐹挱㌰戲㑤㥤㠳晥敡㕣㄰攵㈰㄰㠴っ㘱㍣㤸戲㜹㈰㐲慣戱っ愸㥣ㄱ㠲ㄷ㜷搲㉢㔷㔶㍢挷㉢慡㜵扤扣㕡㡦换㉣㐵㘵〸捡㕥改挴㔱㍤攲㝦㉣摣搳㙢㔷ㅦ愸晦挷戵㠹ㅢ㔷㉥晤㜰昵搶敦攷〵㉦㌶愵㔱慢慢ㅤ攲㔲㑢㌱㈰〵㉦愹搶攳㘲㑢㔱摤㈸㐳ㅡ㜵愱㠵㕢昹摢挸㤹摦ㅤ昷攱晥扦㔹㌴㜷挱〳换㡥㥣㈴㜸昱㉢㡤晡㔵戵㐳㕣㘰㈹〶㌸昹晣㙡㍤㔶㔹㡡敡昹㈳扦挰挵戹ㄶ敥㥢㈳㍣摡扡㥡昹晢㥣晢晡㠷晥搳ㅥ昹敥㕤挱㡢㜱㘹搴㌹搵づ㜱戶愵ㄸ攰愹戳慡昵㌸搳㔲㔴㑥㠳㜲昸づ㤷㥥晡愵㠵㕢㕥昷捡㑤㙢摥㔹戱捦昹㡦摦戵㘲搱挶㔳㥥ㄱ摣ㅣ挸愴㉥㠰〹㔴㈶㌵㤷ㅢ扦㈳愳㜹昱〴〱慦㠹戴㔸㈸攲昷慢㐵㜴㔳晢㐰㤴挵㈰㥣攲攱戰扡㠴挲愵㈰㐲㥣㘴ㅤ戸昲㍢㐷㜰㐳㈲扤㜱㘲戵㜳㍢挱㔲㔴㍡㕣慣愸搶攳㜸㑢㔱㍤㙦㡥挶㔱㍤㘲戹㠵㙢㌸晣搰搵挳愶扥㌲晤戶㕢捥㜸敥愳㉢㕢昷ㄱ摣㈰㐹愳㡥慤㜶㠸㘳㉣挵㠰㄰ㅤ㕤慤挷㔱㤶愲昲㌴捡㈱㕡㈱㡤㍡搲挲ㅤ㝢搶扢㝦晡㘰挶㤸㘹昷捥搹愸㝥收㍢愸㔳㜰挳㈶㡤㍡愲摡㈱㤶㔹㡡〱挹扣戴㕡㡦㈵㤶愲㌲㉣㘵愳㑥㤵㐶昵㔹戸㙦㜷㡥㕣㜶晡㈷挱昶攳㍡㠷㍦㍡㘳㠷攴ㄳ㠲ㅢ㐸㘹㔴戱摡㈱ち㤶愲昲晡㔵攴慢昵㌸摣㔲㔴㑦收㌳愵㔱扤ㄶ㙥敥〱㡢㑦摡㜳敢搸㡣㡢㉥摤㔰㜳挰㕦㠶㡣㄰摣搰㑡愳㝡慡ㅤ㈲㘷㈹〶ㄸ搵㕤慤挷㐲㑢㔱摤㔳慢愴㔱㔹ぢ昷挵愷ㄳ㈷㕣㌰㜶㡦昶昳摥㕤㔱㝢摥愷慢㙥ㄳ摣㘰㑢愳扡慡ㅤ㘲㠱愵愸㑣㕢㤱愹搶挳戰ㄴ搵㡤扡㔸ㅡ㤵戲㜰晡㡢㌵ㅢ㤳换摦㥤㜲㐷㙢昲㈷㜳昷慥扤㑢㜰挳㉦㡤㑡㔶㍢㠴㙥㈹〶㜸㙡㝥戵ㅥ㥤㤶愲㌲ぢ换㌹㜵㤹㌴敡㔰ぢ户㙣捦〹㈳㙡戶散㥢㜲改敡搴㔷㘷愹搳㍦ㄱ㉣㐰挸戵攸ち㌰㤵㤷㈴昱㐰㌸愲㠵㥢㈳㠱㜸㈸攸挷搵㕡㌴散㔸㤷〲戱㔰〰㔷㙢愸㐶挴㈲㥡ㅦ㥢戴戰㕣愳㠲㔱㙣攲㐲㤱收㔸㌸㡡敢㤱㔸㌰㄰㔰慦挴搰敡ㅡ㄰攵㉡㄰㝣昷㙡㈱昵㙡捡慥〱ㄱ㘲慥㘵㕢㘵ちち搶㐵愴挳收㔸㠸〱㔷㈴戳慢㜵敤愸搶攳㐰㑢㔱ㄹ昷戲挳㙥挲㔱㍤㘲㤶㠵㍢攴㠹㥢て㍦昹㥥扦㑣扢昷戶昹愳敥㍥慣昶㜶挱㍡㡤㌴㙡㘶戵㐳散㙦㈹〶㥣捦㝥搵㝡捣戰ㄴ搵愳㜸㠷㌴㙡㕦ぢ昷昸㕦ㅢ攷摣搱㌱慣㙤搵晣挷户摤敤扢昶扦ち搶㡤愴㔱敤搵づ戱㡦愵ㄸ㤰㕡搳慡昵㤸㙡㈹慡㝢敡㕥㘹㔴㥢㠵摢昰捡昹㘷㙦扣晦挹挹㈷㥦㜸捣㔱㑤㡦㥥昷捣搰晢愰㍥挰摡㑢戶攵昵㈵㈸戸㤴㙢㌹挱㘶㍦晦晤㜰ㄱぢ㌵慣㑣㌸ㄳ捤〴〲改戰㕦て改㕥㔶〱㝥㙣戵㠴摦戴㐳㌳〷㘵㝢搲扤㑢㘴昹㘴㔴㡢㕥㌰捡搵㤴〹㤶慥愵户慦㈷㕤ㄸ改慥散㈸敡㐵攳愷㤵扡昲㈰〳扡㜵愰戸㘴ㄴ攴昱㜶愸散㌶㔷敦敥㌳ㄲ㑢戳愶㝡晢ち㌵㑡㑢扤挹敡摡愹㜹攳昰㤲㜶㠰㐵〹搴㍥ㄷ换戱〷㥣愵愹㌲敤ㅡ摤摡搵㕢㌰㝡愴㜹ㄳ㜲戳戲愹㠵㐶扥挳㘰攵搴㐸换㔳ㅤ㐱㤵㔵摦㥡㌰戳〷㈷㡡㡡㔵㝡慣㔳㥡㤹戲戴㘸昴愴㡤㌴散㕤㘴攴㡢换㘶敢挹㙥攳㈷晤㈰收㌱愱搸慥㥦㜸㙡㙦慡慦搰摡摢㔳捣昷㜶昷搷㈴搲㡢㜵搴搴搲晢昵愶つ㤴挴敡昸昲〸㑦㙤慤㄰㥥晦㜴慢扤㜰摣㐲戳っ㠴㈳挴慣㤰㙤摢㍦敤㥡て挴搹攱㉣扡つ收㘴捤戸ㅦㄸ㑣㡥换㘱㜶慤づ㜴㥣ㄳ换捣㐴晦㐷㜵戴戴戱ㄴ戹晦㕦㜰㑤捤㔶搶搹㑦㔹㡣㙡搰㍥㝡㑦扡摢挸て㕡㈴ㄷ戴㐸扤ㅦ挴㥢挰㙣慥敡㍤戹挴㉣ㄵ换扣㑢戲改㘲㤷搲㘵㘴ㄷ㜴昱㘲ㄴ㠵昴㠶㠶晢挸㔴扥搴戵㤰愸敢㐸ㅥ〰㘹㙣昴㈸敢昱改㔱ㅡ搵〷捤戶㤷〵扤㝦扥㥡㔴㠳㕥慡慣愰愲摣㕤昰收愶昶收ぢ戵戵㙥㘷戹㡦㕥攸㉡㌲㍤〷㔷㜲扣㠷㐸㌶㠰㜸挷㠱晣㘰挱㔴㙥㉥㔸ㄷㅥ㤶㙢㌳㌲㍡慡昱㜲㜶ぢ摤㥢㌳ぢ扣㙤㐶㈱愵戲ㄲ摣㡥戹戲㔴〱㠷挹捦捡㕤㑦搱㔸㕡㙣搳㡢㝡㝤づ㌵㘵㐴㐹〵㘸㠲散㘵㜲散㌹㑣捡散摥㡤㔶ぢ㈳昸㈴敢ㄸ㘵㠸ㄴ㤸㈳㘱攲㘰扥㜸㙡㉤㍡昸㐹挰㜶㔶㝤㤵捡㐴敦㕦ㅢ㐶挹㍡㍤捤攸㤹扤㙣㤱㔱㈰扣㐱ㄹ搴㤵㤵搳㡢㠳捤㑣㈵攷ㄴ戳摤㠵㘶㔸㍡㉤摦摢户攸㕦㌹づ挷㔲ㅦ〶戱㕦摥ㄸ戲昸挷㥦ㄳ摣攵愹㕦捣搸㜴㜶㝡ㅡ㌸ㅡ㈵敡㑥㈴捣㔶っ昶㍤㍥攴㑢㝤ㅣㅦ㡤㠳改扣攳㠱昸㘷敡攸㕥攰㠷收攰愱搹㜹㐳晥㌲搰㈰ㅢ昰昶戰ㅣ㡢挰挹摥摥㠵捣愷攱戲㔵慡ㅥて戱㝥㕤㘰㌵㔸〸㔱㕢戵㠶换㍡扤昲〴挸戰㐴㜷昷㘸㝢挴㠲昲㈴㐴戵愸晢㉢㑦㠱搹戱㜵收㤴搱㕣㜹扢㐷捦敡挲㜷攴㘸晦攸摤㐶〷晣愸㍢〵㥡㤷㜶ㄷ㜲愲ㄹ㑥㜰㉤搴敥㘶㈹〶㕣㔹㑣挰戰㥣摣敡戳㈴捦㠱〸搶㍡愵攸㜹㡡㕥愰㈸㙡㡢㕥愴攸㈵㡡㔸晡ㅢ挳搶换㙣㡤挷昸㕣㤵挰昷㝦愹慦愲慤扥㐶昲㍡〸搶ㄶㄹ㉤㉣㉤ㅢ捤愶㘰昹㔰ㅥ敥㑤㌰敡㕢㈰㘲ㄲ〸㈷户晡㌶㠸晤ㄲ愳㌰㍥㜳㐶挶㥤昵挶㠱㜱㝦ㅦ搲㐶㜵㄰㥤搸ぢ〸挶㕥愵慦㔵㝡㔷愵㘷挵㤶ㄸ搸搵㜳㕢㔸㡡捡㕤慡㐸愰㥢㜴挰㈶昶㙦〲捣摤〱㥦昲ㄸ㝦㈳昹㍢㠸挳〱㥦㥢㑤搱㠲㑦改㠰㉦〸晡ㄲ㐴戴㠱㐸〷㝣〵挶㝥〹〵挷㈸㌹愰ㄵ攲㠱づ昸ㄶ搲㐶㜵㄰㥤㤸〲㠴㥢〳晥昱㕤ㄵ〷㝣㘳㈹〶㙣散㔹挴㤴づ㔰㄰ㄱ昱ㄵ㘰敥づ㘸㠰㕡㔵㐹ㅡ㐱ㅣづㄸ㙡㌶〵ぢ愱搲〱挳〸ㅡづ㈲愶㐳㈴ㅤ搰㠴㤶晤ㄲ㥢㜰㡣㤲〳㔸㌹ㅤ攸㠰慤㌸愶㍡㠸㑥戰挲敡收㠰昷慡㌹攰㕤㑢㔱㜹㡤㉤㔸ㄶ㤵㜶㡦愲摤摢搳敥㌹㄰㡤愱㘱㍢戰昵㘶㔵㥦㡣㘶㡦㌱㈴㘳㐱ㅣ㍥ㄹ㘷㌶挵㕣㝢散昱〴敤っ㈲づ㠶㐸晡㘴ㄷ戴散㤷㜸搱改㤳㠳㈰ㅥ攸㤳〹ㅣ㔳ㅤ㐴㈷㔸㕦㜵昳挹ㅦ慢昹攴て㤶愲㜲㌳㈴㔸ㄴ㤵㍥搱㘸㜷㤸㜶ㅢ戶㈸㐲㔱㤴㈲ㄶ〴㈵㉡㐶㔱㥣愲挳㙤搱敥ㄴ敤㐱ㄱ慦㕡挶攰慤敥挹搶晡慡捥摣㡢㍤昶㈶㤹っ攲㜰㘶㡢搹ㄴ㝤昶搸慤〴戵㠱㠸㈵㄰㐹㘷㑥㐱换㝥㠹㝢㥣捥㕣っ昱㐰㘷戶㜳㑣㜵㄰㥤㔸㡡㝥㙥捥扣戹㥡㌳㙦戲ㄴ㤵㐵ぢ㜱㌴㐶㤲㙥㍡㤰㜶㜷搰敥ㄵ戶㘸㌶㐵㜳㈸㘲㐱㑡愲收㔲㜴㄰㐵㘷摡愲㠳㈹㥡㐷搱㉡㕢昴㕦ㄴㅤ㐲ㄱ㑢㈱戲攳捦㈹㍡㤴愲换㙣搱㉦㈸敡愴攸㑡㠸挶攰慤捥㘷㙢㜵搵㈸㈴搹㈳㐵㤲〶㜱㐴㈱㘳㌶〵㡢ぢ昲㜰ぢ〸敡〲ㄱ㉣㌰挸㈸㘴搱戲㕦㘲㤵㌳ち慣㐶っ㡣㐲㡥㘳慡㠳攸〴换ㄶ㙥㔱㔸㔹㉤ち愷㔹㡡〱ㄵ㠱㥢㌰㤲戴㝢㌱敤㕥㐲扢戹搳㤷愲愵ㄴ㉤愳㠸晢㙣㈹㍡㠲愲㈳㐱扣昷㐳昴㑦散㠹㠶〰慥㘶收㘶㡤㈵扣㠸ㅢ㥥挱㝤〸慤㝤㠵㘲慦扣攲ㅣ㤶㘹敢摤扦户搸㤶㉤㉣敡搶㤷㙤㤵戱㤸㠳扡㡣ㅥ散〷昳搸ㄶ㔶挸㝡ㄷ㉤㌲搲㙡愶愳户㉦㥦㌲摡摢晥ㅤ昶㡢㌸㍦㌸㑡㙥ㄵ㙢㜰㌱㈴㌶㙦ぢ攴㐱㑦愴ㄷ㕥ㅥ敦㕡っ㔸㜹㈵㉢敦㠶㜰散㍡㈵敢〳戰愹散搱搹搹㘲户㌱㈴㈳㜷㝣㤲㙦挸挰㡢搸㘴愷敢㌳戳扢㜰㠵搷㌶㉣㌳㉤㥦㑤㜷㘷㝢っ〶㘳㙢ㄳ㍡挳㔸㠰つ昵慣摥㐲㤶户づっ换捣捥敢㍤㠵㐵摣ㅢ愴㤶㙤搹慦㈵㌷ㄱ摥㑣㑢戶愷㠰挳挸㈸㤲㙦捡㜴㜴昵㉥挱㍤㔰㝤戹㥥㘹晡愲挲扦㐵㔴㤰慡搶㑢㠶㐶搴㠸㥡ㅡ搱㔰搳戰戹昱㔱晥ㅢ㈳㙥㔳晥挵㘴㌴㜲戵㤸捦㈶晢攸㌴㜹愴㈰㘸ㅤ㠹㡣愳挷扢づ㕣攵㑥挰ㄱ挶㡡㙤㍣敤敤㜷㝦㡦敢㡥戲㜴㜳搹昶㠰慢㐷愱搳搰愳㐱昶㥤㌶愷扤㕣攰晡㍦摤愹攵㝤〰㈳晦攸㝡挲〸㠰㠷㥢㘹挴ㅡ〳戳ち戳ㄳ搹挰㔶㘵㙡㌶㘶㈴㠶㔹㍡扣捣㑥挵㤶㜴㘸㘶㠶㥥㌴扡戱㤳捥改挵攱㘶㠳㈵㡤㥣摥㕤戰㜴慤扤戹㥣捥戴攳晤㐸ㅤ㈹扤摢㘸挸㈴晡㡡扤戸挹㐷捤㠰挸摣戴㐴晡㔲㠸昴愵收㥥㌷㜳㈰㉢㙣㤲攷㔸扤ぢ昴㝣戶搸㤵换愶ㅡ搸㘰ㄵ散摦㈲㕦戱㠶搴挱㤹昶换㕥㑦㉡㌷搱收㔶ㄶ攱㙥㐶摤㠹慥㘳昸㤱搵㌵㐲挱㍦戱㤹〵ㄸ慣㍥昲摢㐸㍤ㄶ愳㜹㙢㘰〴㤷㈳昹摡㘴摦昱戸改ㄸ㐸攴〲㈵ㅥ㈴〰㙦㜵㌹㈸ㄹ扥敢ㅥ〲ㄹ㜴㜷㕥て㐰攳㡣㕥㍤㍤㔵㑦攱摥挲㝡敢捥挲〶㠴㤶换㑤摥挷㝡㐹㉢㌶㠲㈸敤㉤捥愶㡤㝣〳〵ㅤ戸㜳戲㡥㤵ㄶ挵㡣㈱㜶㡥戵ㅥ慦㜷㐸㠳摢戱摡敤戱挶㔹㠵㈸攷㥤㤹敤〳挶晦攸㠰搸摥昴㝡㘳愳晣㥡㍡づ攷愱ㅥ捦㜳㘲㈵㠶攷㔳〱㔸㐱挰〹㈰摥㠷愱慣㡣㑤晦搲〵ちㅣ㉡㐰㜵昲㥥㍣ㄶ㔵ㅡ㔰㠰㤰搵ㄸ慦㍣㤱㈱㡥㉡㡡㘲ㄶ㔰ㅡ散ㅢ晤㤴づ㘴戹㤱㙥㌴搷㔸㔶㙢ㄸ㡥ㅡ摣㉥㔵搳愰㔴㔶愰〷ㅣㄶ㠳攵㍡っ㔹㕥ㄱ㍢挰〴攵㐴㜴ㅥ捡挹㠲昱㍢攵扤㙢敢㈱挶扥慢戴戳㙤㙣㔴㑦〶挸搳㈸ㅥ〷戵捦㕣愱挴㜴捤㈹搰慡愷㠲〸㙥愹㙤〰㔸ㅢ㜰ㅡ〱㉢〹㜸捥ㅤ㜰㍡〱扦㈴攰㜹㜷挰ㄹ〴㥣㐹挰ぢ敥㠰戳〸㌸㥢〰㙥搸㕤㙣㌸㠷㠰㜳〹攰㘶摥〵㜰ㅥ〱慢〸攰晥㥥㔷㌲㡥敦㕤挱㑤晤㕡捡㔴慥昵昲㔵戱愶ぢ㙥昹搷攱慤㕥挰㐱㕥〷挷攵戲㌴㝤㉥㠴昴㠷愷捦㐶昶挰㕢扤㠸㠳㔸つ昱㈶ㄸ摢㘴㐷㑥㕥っ㠰㝡〹㠱㙦戹〳㉥㈵㘰㌵〱㙦〳挰扣㔴晥〷㉤㐷扣㜱晢㤲㑢扣㉦〳〸昱㝥摦㌱慡㈳摥㤷㜳搴㉢㌸㉡ぢ〱㤵㥥晡ㄴ戲戵㜸て攲㈹搶〶搶ㄱ戱㠶㠳戰㐸搰捦㔳㔷㐳晡挳㥥晡ㅣ摤〰挴捦㜵ㅣ挴㙡㠸㉦挰戸㜸敡㕡〰搴敢〸㘴戵挱〵㜰㍤〱㌷㄰挰〲㠴昴搴㡤㘸㌹㍣㠵㥢愹㕣㍣㜵㌳㐰昰ㄴ慢㄰昶愸づ㑦摤挲㔱㙦攵愸ち㐸愵愷㔸㈶㔸㡢㡥㠳㜸㑡〵㘴ㅤㄱ户㠳ㄱ慣㈶昴昳搴㥤㄰晣戰愷㔸㜵挰㝦㡦㝡㤷挵戰㈱㔸㝡戰㑤㜶攴搴摤㄰慢扦㈱㤰㘵〹ㄷ挰㍤〴摣㑢〰㉢ㄵ搲㔳扦〵㌳捣戱㠶攰搶㉥ㄷ㔷摤てㄴ㕣挵㝡㠵㍤慣挳㔵扦㠳㔸㕤ぢ㈲㐶㌹〰攸㘱㉦㈲敢〸㜸㠰〰搶ㅤ散ㄱㅣ㠰昵〴㍣㐸挰づ㈰㤵捥ㅥつ搹㕡愲慢㑦攰㌱㠰慣㈳㘲〳ㄸ㌱ㄶ愴㥦戳ㅦ㠱攰㠷㥤㍤㡥㝤㌹挸愳ㄶ挳㠶㘰㑤挳㌶搹攱散挷㈰㔶ㅦ㈷㜰㘷㜷挰敦〹昸〳〱㉣㠱㐸㘷晦ㄱ㡣㈳㉤㜱挳㤸㡢慦㥦〴〸扥㘶ㅤ挴㍥慣挳搷㑦㐱慣㍥つ㈲㔸戳戰〱攸㘱晢晡ㄹ〲㥥㈵㠰昵っㄷ挰㜳〴㍣㑦㐰挴ㅤ昰〲〱㉦ㄲ㄰㜵〷扣㐴挰换〴挴摣〱慦㄰昰㉡〱㜱㜷挰㙢〴扣㑥挰敥敥㠰㌷〸搸㐸挰ㅥ敥㠰㌷〹㜸㡢㠰㍤㐱㉡㌳㘶㉦挸搶搲㈹搵㌳㘶㙦㐰搶ㄱ昱づㄸ㌱ㄹ愴㕦挶扣〷挱て㘷㑣ぢ晢㜲㤰昷㉤㠶つ搱ち㙡㍢摥㤱㌱ㅦ㐰慣㝥㐸㘰㥢㍢攰㑦〴晣㤹〰搶㜹㘴挶㝣〴挶㌹㍤㜱㕢㤶㑢捡㝣っㄴ㔲愶ㅤㅦ昶㜱敢㈹㌱扦攳晦ち戱扡〹㐴戰㌲㘳〳愰户〱㥦㄰昰㈹〱慣摡戸〰晥㐶挰摦〹㤸敤づ昸㡣㠰捦〹㤸攳づ昸㠲㠰㉦〹㤸敢づ昸㡡㠰慦〹㌸挸ㅤ昰つ〱晦㈰攰㘰㜷挰户〴㝣㐷挰㍣㜷挰昷〴㜸㙡〰昸㉦㜷㠰㠰㑥慤㈱攰㄰㜷㐰㉤〱㜵〴晣摣ㅤ挰㡣㔱ㄵ〲づ㜵〷搴ㄳ搰㐰挰㉦摣〱㝣㝣㐸㙤㈴愰搳ㅤ㌰㠴㠰愱〴捣〷愰㌲昱㤳㤰慤㘵㘸慢㈷㝥ち㤰㜵㐴っ攷㈰㘹戴ㅥ㘰〷㝢慢挰㐷㤶㝥㌸昱㌳攸㠶晦㜸㈲㠹㠳戰㍢摦慣㤵搹改攳㐸晣㉤㠱㔱户㈲戰换ㅤ戰㌵〱㈳〸挸〲㈰ㄳ晦㈷㘸㌹㤶㑡摣摦攳㤲昷摢〲㠴扣捦㌹㐶㜵㉣㤵摢㜱搴㥦㜲搴挵づ〰㝡搸㜹㍦㤲㠰㔱〴㉣㜱〷㙣㑦挰づ〴㉣㜵〷散㐸挰㘸〲㤶戹〳挶㄰㌰㤶㠰㈳摣〱㍢ㄱ㌰㡥㠰㈳摤〱攳〹搸㤹㠰愳〰挰㝦㡦扡ぢ㕢㘰昸昶ㅥぢ㕡戹㘳ㄹ戰㥢㤴挱挸㜰㕦搹㔱㕣搶㡤扤㍣㔹敥㘰㑣㡥㝢戱㐶㈹挳扥慡㌷㕦㈷㍣㜵㤵扦搸㤷晡摥㠷㠳づ搹扡攲㙥〸搹㡤㥡愳㘱㡤昷挵㙦〷晥攲㕦敡㑦愳换㍦㡤戲て㕦捡慥㌸愷慤昷换愶昲扤㠵摥㑣㜱㜴〷㙡㔵愳㜹㜷㐹挶攳昱㈷扣捦㘳㐴搷㘳昲挴敡㝡昸散搳㘲晥摡摡戸戰愷㜷㐹㡦戴挶㕢攰㑤㌶㍣㥡㕡㕦捦挳㌴攲㉤㕦㍢挱㜱扥攵搰戰戳㍡〱〷ㅥ㔶敢㍢捥㙡㉢ㄳ搱ㅥ摦摡搲㝡㘰愷㍦散㌷昴㐰㕣㡢挴搲㝥㉤散〷㤷㡥愵愳㝡㍣㥣挲つ㙡挱㤸愱散㔶㠲㐶㡤㔴㍡攴㡦㠵晤㐱摤搰㘲㐹㉤ㄹ挵昳㐷㐹㉤ㅣ㌳挰㠴㘲〱愵戹〴つ挷晣愱㜴㈶ㄴ㡤ㅢ〶ㅥち㐸㠵攲晥㘴㍣ㄳち㈴晤戸ㅦ挹ㅦ㡣挴㤴㥦㤵愰愹㘰㌴ㄹ㑢㈷㌳㠱㑣㌴愹挵搳挱㜸㍣㥡㡥晡㡤㐸㍡ㄴ搰㜱㜷㕣搰㜷扣㝤ㄲ㝥昴㔱〳㈴㐱㤲㄰㠸㙦㠵慤搴㈸ち㤳㐴㐸愲㔴㜲戳㉢㑦㕦昶㈴摥散挹㌱扣㈷㐳昹㘳㜷愳ㅣ㐴㈴㐵ちぢ㠹㔱㔷㕦㉦挶㔷摣戲㌲㘰ㄷ㕢晡捤㕦㔱㜶㐰㕦敦㠳〸敤㡦敢〴慢ㅣ㤹挳捥㌰搶愳㑥愲昱㝢㠱㌴晡㑥〱愴ㄶ㌲㘵㙦㌴户㘸㙤改散晦戴㥣㌲ㄹ攲愱㄰换㡤㍡ㅥ㙡㉡㈸〹㐸㠶㐳攲愸摡昹㑥戵㐶㔱㕢愰㤴㑦㠷愹㘳㌰愸敦㌴ㅡ㐰㘶愵捤㥣㙥㌳扦戴ㄹ㙥㜶㈵㠶ㅢ㕥挹㜰㜷㉢㤹戳㙤收ㅣ㥢㌹搷㘶捥戳㤹㔵ㄶ㈳㉥〰㐳㕥㥤〲ㅢ挸挸昷㠵愰挷攲㉤敥㠱搳㌸换㌸戰捡愹挳㔹㈲敥㠶㠴㌳愵㝦愶㕦㠴づ㌲搴敤挰㈱搳㉦戶摡捡扥㘸㥢㤹ㅥ㡤㠷㤲昱㘴㉣ㄳ挱戳て挸㐹㉤㙥㘴晣㤱㤴㍦㥥㌲挲愱㤴㍦㥤㔶愶㤷愰㤸㄰㄰㐵昱㄰㐴㈴慤㐵㈳㤹愴ㅥて〶㠳㠶㤶㑣㘷搲昱㐸㉣愳捣㈸㐱愳㤹㐸㑣ぢ㘵㌲搱㐸㉣愴挵愲㤸ㄴ挹㠸ㄱ捤攸晥㐰㍡ㄵ㑡挷㠲捡㝥㈵㘸㉣ㅡっ敢挱㔴㍣ㄹっ㈵戵〰㡥ㄱ挶戳㌴攱㘴㍡ㅤ㌰㔲愱㘸㔰昷㕤㘲㥦挴晥攸愳捥㈴㤹㐵㜲〰㠸敦㔲㕢改㤶改慢㙤㘵戹㤳ㅣ㠳㍤挵㘵㔰㌲摢挵ㅡ戸㡤㤹〸㈱㝥㙦攲挸㍦〷㘹昴㕤づ㈵㌳㑡㘵㐶愹捣ㅦ㤵㈹攳扢挲㤶捦愷㠸㜷〵挸挷㡢挴ㅡづ挶㔶ち㜲㌲昲㝤㌵愸㡣摢挵㌸挴挰戸㕤〸改挰戸㕤㠳㑥㌲㙥ぢ㌰ㄴ攲㜶慤搵㔶扡搰㌶攳〶户愶㌲㈹挳挸挴㤲㔸㑢愲戱㔸㈸㤹づ㘲㘵㐹㐷㡤戴〶攷㈹搹㌲㌴ㅤ昱〷㔳挱㜴㈴改昷㙢戸搱㔶て愵㤲㈱㈳㥣㌲㜰㐷㐶㈸㥡搱㤴挳㑡搰㜴㔸挳㠳㐱㤰攳㠱㉡㉤ㄵ㐸㈵攳㤱㤴愶㘵㜰摦㙤捡昰挷㐳㜱㘵㘱〹ㅡ搴晤㜸戰挹ㅦ㡢ㅡ愱㠰ㄶ㠹愴攲㝡㌰ㅥ搶㘳㕡ㅡてㄴ㈵㜵㍤攰扢捥㍥㠹㙥昴㔱㜳㈴㍤㈴扤㈰扥敢㙤愵㕢摣㙥戰㤵戲㘷愹㤳ㅣ㐳㜰敢㉥攳㜶戲㌳㙥换㌸昲ㄱ㈰㡤㍥敥摥摤攲㜶慢㉤㍦㥡搸ㄶ㐶㉡挱㈸摤づ㌹晥愳昴〹㌹ㄹ昹扥ㄳ㔴挶敤㘸搷戸晤户㙢摣敥㐲㈷ㄹ户ㄳ㌰ㄴ攲㜶户搵㔶㑥㐴摢㡣㕢㌸愶攳昶收㔸㉡㤴っ㙡㕡㉡ㄶ搱愳挸㜸㐳て昲㥢㈳㡤敦〱攵愴ㄲ㤴昳㈰ㅤて挰挹㕡㐰搳㤲㠱㜸㌰愶㐷㘲㠱㔴㌸㙡〴㤳㥡ㅥ㔰㑥㉥㐱㘳〸㘹㈴ㄵ㑡挵㈳ㄱ㕤㡢敢㤹戸㤱っㅢ挱㔰㈸慤晢㔳搱㜴㉡慤㥣㔲㠲敡㝡ㄴ㠷搳㡣愰㤱㐹㙡㤱㜴㕣㑦〶㌳㠱愰慥㠵っ〳戱搷愳扥摦搸㈷㜱㉡晡愸愷㤱慣㈴㌹ㅤ挴㜷㡦慤㜴㡢摢扤戶㔲昶㈴扥摣㕤摣て愵㡣摢㘱捥戸㥤㑦搰〵㈰㡤扥摦〱攰ㄶ户戵戶晣㘲㘲㜹て㠶㝣㉣捤挷捡〲㕦扥〷㙣㘶扤捤㍣㘸㌱㘲〳ㄸ昲敡㙡昴㈵㈳摦㡦㠰ㅥ㡢户㤸敦ㅡ摢㕦戸挶昶㔱㜴㤰戱扤ㅣ㐳㈱戶㉣〲戰慤㕣㠱戶ㄹ㕢㉤ㅥ㑦㙡戱㔸㉣㠹㕢搶戵㜴㈶㤵搴㠲㕡㈸㄰㑦㘱㐲挶㌳㘸㉡㔷㤶愰戱㄰扥攰㌱㘳㌲㔱挴㈲㥥挶ㅡ愹愷㔳攱㔴㌲ㅡ挳㌵㐷㈰ㄹ㔳搶㤴愰㐶㔴换㐴愳㜸昸㌱ㅤ㡡㈲戶㥡㡥挵㌵ㄲ㠹㐵㜱搵ㄱ㡦㈱挸捡㔵㈵㘸〸㌳㍦ㅥ搱㜵捤㐰挲㐴㌴㈳ㄹ搲㌲〱㉤挹ㄷ㘷慦收㝢摣㍥㠹慢搱㐷扤㠶攴㕡㤲敢㐰㝣慣㕡挸㌳㜴㡢㉤慢ㄹ㔲㐹愸㉡扢换㥥ㅣ㐳戰㙥㈱㘳㍢挳ㄹ摢㍢㠸扣ㄳ愴搱挷搲㠵㕢㙣㥦戶攵昷㄰㍢㤷㤱㥡〳攲㘳㈵㠳㉦摦戳㌶挳搲㠵㤴㍣㙦㌳㉦搸捣㡢㌶昳㤲捤扣㙣㌳慦搸捣慢㌶昳㥡捤扣㙥㌳㙦搸捣㐶㥢㘱㠱㐱ㅥ敢㉤㡢ㄱ敦㠰㈱慦摥挷搳〵㈳摦敦㠱ㅥ㡢户㘸㜱捤愳挹慥㜹挴㜲㠱㜴攴㍡っ㠵㍣晡挰㙡㉢て愰㙤收㔱㑣て㠵攳㤸㤹㝡㕣ぢ㙢挹㔰㍣ㄶ昳〷晣愱㔴㐰㡦攸昱〸ㅥ㘸㔵搶㤷愰搱㔴挶㐸晢㔳㘱㝦㍣ㄳ搶㠲戱㐸ㄲ捦㝢ㄹ㤹戰ㅥ挷挳愷㥡ㅥぢ㉢て㤶愰㐶㈰㠹㘷㉣㈲挹愴ㄱ㑤攱㥡㌶㡤㙢㑦㈳㠹〵㈰㘵挴攲〱扣㤵㠷㑡搰㜴〸㤷㥣昸搶㐸挵㜱昹慢㈳㐷㘳㠱㜴搰㡦愵㉢ㄶ昵攳㝡㔵昳㝤㘸㥦挴〶昴㔱ㅦ㈶㜹㠴攴㔱㄰ㅦ㙢ㄹ㔵昳攸捦戶戲摣㐹㡥挱㥥㠲挵っ㤹㐷捤捥㍣㝡㠶㈳㍦ぢ搲攸㘳㍤挳㉤㡦㔸攲㤰昲ㄷ㠹敤㘳愴㜸㔳㡥㡦攵つ扥㝣㉣㜱㐸㠶昵っ挹晣摤㘶㔸挰㤰㤲捦㙤收ぢ㥢昹搲㘶扥戲㤹慦㙤收ㅢ㥢㘱㕤㐲㜶晦搶㘶扥戳㤹敦㙤挶〳慢㈴㐶搸っ㑢つ㔲㔲㙢㌳慣㉤㐸㠹搷㘶ㄴ㥢愹户㤹〶㥢㔱㙤愶搱㘶㠶搸捣㔰㡢ㄱ挳挱搰〰昵ㄵ㡢㘱㐳㜰㡦㉦㜳㜶㥣㙢捥㡥㜵捤搹㉤搰㐹㐶昴つ㌰挸㔹敥敡搹㔶㌶㠲㌱㜳ㄶ㤷〷愹㐰ㄲ㔷㜸戸㠶搴昴㠸ㄱ㡦㐶㌳㝥㕣昶愵挲戸戰挴收㐵㜹戳〴挵㜷㑦摣搰㌲戸摡挴㥦㘷挰搷㕢㔲挷户㤹ㄶ〹攰昱㙥㝥户挵㤵户捡搰㐰摣㠸挶昵戸㡥愴搶㤲㝥㉤收挷攵愱㥥㡥㈵㘳晥㑣㍡㤴㡣㈸㙦㤷愰㜸慣㍡ㄲ㠸攲戹收ㄸ〶ぢ愶㌳㤸㉣ㄱ散挸っ㕣戳㐶戰摤ち晢㔸㠵㤰㈷昱づㄸ昵㕤㤲昷㐸摥〷昱㙤つ㔲㌵㘷㔹㥥㤰㑡㠹㉦㜷㘷㑦挱㐲㠴捣㔹㥦㌳㘷㍦㠱㔴晤ㄴ愴搱挷㕡㠴㕢捥戲㍣㈱攵㥦ㄳ扢㠶㤱扡ㄲ挴挷搲〴㕦㍥㤶㈷㈴挳㕡㠴㘴㔸㡦㤰捣㡥㌶㌳摡㘶挶搸捣㔸㥢搹挹㘶挶搹捣㜸㥢搹搹㘶㜶〱㈳捦散㉢㌰挳㙡扤ㄳ昰戱㐷挵㌶捥晤〶㠷〹㤵て㙤㑣挱㐳ㄸ扣ち昳搴攲㤷㕤昳昷搰扡㥡摤㌷㙦㉣㙥ㄴ户挷㔰㝣㝢ㄵ昸昵晦㌰づ戳扥㕣㜴攰㠸㍢攲慤㝥〳㔳扤摣〱晢摤㑣慣晣㐳ㅣ捥扦㝦挲㌲搳㠸㕣㝢〱㥢㐸昹㤷㌱ㄲ愵㍦挲戲㠵扤戹㥣㘰㍦㑢㌰扥㉣㐹㈴ぢ戸㥤愶㘸搸摤㘶收㑢晤㜰㙦㍥ちㄸ㔰㑣攰㤳〷㈳捡㉤挷敦挹㈳换搲昶㥥〲㥥㤲㌱搲昶㠸〵ㄴ昰敡㙡㙡㠵敢㉤ㅥ搶㥦㕢攱て挸ㅣつ捦挹戴愷改㠰㤱㉥扦愶户㘴㡢昲㙥㤴㔱搰ぢ㜵㈲㥣愳㝣ぢ㔲㍦㘹㕣㈲㌱㉥攰昷搶㈰ㄲ㍦晡㈰晤晤捥㐳㌲搱ㅡ搵敦㌱愲〸搰昱㘴搴摤㐰ㄵ㠱㜹愰㑣ㅡ搷挶㠳㝣昷㡦敦扦㜷扤ㄹ捤㍡ㄳ摣㘳㙥扢㘲㑡㑦ㅦ敢㝦㡥昰昲㌰㝣㌵慡戸愳挰㈳㔸ㄱ㌱て搳捣挳昰慦昶攰㌰昳㜰ㄸ昱㌵づ挳昳㠱ㅣ攸㝡愲㔹ち㌱搱慣挳㈸晣扢㑤㐰捦㈱晡㜳ぢつㄱ搰㐳㠸收㐵ㄲ〷攰㔹〹㤶㔸搸愰㕥戰搴㘲て㉤㔸㜲攱㈹㐱攱㘹㘲扤㠲改挳户攳戵㘹㙦慢㌱搹晣㙣戰㍥㝤搶攷搶㤳㥢㔸攴㤰㍤てㄵ㘳捥㑥㜸㌷ㅥ戳晡㤳㙢昷ㄸ㝦挹㑤摦㕢㥦挷ㅣ㝡㘷㝡㤴敦挲㝤ㄲ收攷挱㠹つ㈷㑦ㅦ戱戲㤰㑣㠸ㄶ昴ㅣ㡦㜱㉢㙦㈴晦〴㐶戹摥㐸扥挹㔲㔴摥㠲敦㥢㠲㤱攴㘲戱〵㑥㜳㔸慤㘸㐷㥢ぢ㠶昸ㄸ㍤㌸㑢改㝤㜵㉢㍡㘷㝦㠸㑤㔷敥ぢ㑥ㄹ〱㤹㜴㝣㔴ㄳ㝦〲搸昶㑥愳扡つ搱摣㥥㥢攸改㐴㙦〷㤹㤹㜳㠰扦㘷挱捤攴ㄹ㐹昸慣ㄲ㝣〶攱摢㥢㠳捦ㄹ〷昴㕢ㄶㅡ㈲挴㘹㐷愲戹搹㌷〷摦㡦攸㌱㈶扡㡤攸搷㠱戶㘳㠳愷㌰愰㘹攲晥㝦昳㈲挴愲挱愰ㄱ㝡㜸搲㑢㙦慤㜸㘷户㠴昹㌹㈹㌱攷攳戱搷愶ㄶ㑥㑤㠸昹攸改ㄶ愱㤷㘰㥥㙢㠴㕥戴ㄴ㤵户晡晢㔲ㄸ㐹㐶㘸㔷㥣ぢ㈲戴〰㙤ㄹ愱攷搱愳ㄴ愱〹㜴㑢㌷㔴愶㕢扡挰㈹扢㐱㘶晡㍣ㄸㄳ㑦〳㙤愷㜶愳晡㌳挲㜳㈵㜸㤶昰〰㘴㜲挲〲晤㐷愰换㕥っㄱ捤㉤扢㌹昸㘱㐴㠷㑤昴㥣㜱㐰㍦㘶㡤つㄱ㈲ㄴ㈵㥡〵〱ㄳ扤㤰攸戸㠹㥥㐷昴〶ぢつ㌹搰㝢㐰搳挴敦㤸捤㡢㄰换〳㠳㐶㘸搳扥㕢㜴晥敥挹挹〹昳㜳㔶愲㙢搳慦㠶敦ㄸ㥦㤷㄰慣ㄸ戸㐵㘸ㅤ捣㜳㡤搰㕡㑢㔱昹㉣㠲㙦㌹㐶㤲ㄱ㑡攰㕣㄰愱ㄳ搰㤶ㄱ扡ㅦ㍤㑡ㄱ㙡愵㕢㑥㠵捡㜴换㠹攰㤴㈹㤰㌵㤸㉢㜱㌰㉡敥戱ㅣ㘳㑥㡢㘹挴㥦㔶挲㥦㐴㝣㍢㘴㠸㈸ㄶ㍢挰敦戴攰㔰挰㡦搳〹㕦㔹㠲㥦㑣昸㝥㈶ㅣ㑢㌰攰户〲㕥づ改㑣挲戹㥢㌷慤㌹㠵昰〳㑣㌸ㄶ㐷挰㙦戴㐶㠷っ愳㜷攰愳㠹晢晡捤㡢ㄲ㡢〱㠳㐶㐹扦㝣搴昵て㥥㌵㍥㘱㝥㠶ㄳ昱摦敦昴㐲昸昳㝤ㄳ㠲昵〱户㈸㕤〳昳㕣愳㜴戵愵愸㝣㘰挲户ㅡ㈳挹㈸捤挳戹㈰㑡㤷愳㉤愳戴〶㍤㑡㔱㍡〴㑡㜱㌵㔴愶㕦慥〰愷ㅣち㤹晣搲㠸〴挵㘵晤摣搲㐹昴㌵㈵昴㤵㐴敢㈶扡㙤ㅣ搰㤷〲㕤昶㜹㡡攸㙢㑢攸㌵㐴ㅢ㈶㝡ㅥ搱ㄷ㕡㘳㐳づ㤷㉦㈰晡扡ㄲ晡㉡愲戳㤰㤹㌳ㅡ昰㔵ㄶ摣㑣㤷㠵㔰㌵㜱㜷扥㜹ㄱ攲㤶㝥搰〸㠵㐲愱摢㕥ㅡㄹ㑡㤸㥦慤搶㘷㐷㐲㜰㤷敦ㄶ愱戳㘰㥥㙢㠴捥戴ㄴ㤵㡦㙦昸戸て㤷ㄱ㍡ㅣ攷㠲〸慤㐳㕢㐶攸㤷攸㔱㡡㔰㠱㝥搹〰㤵ㄹ愱〷挰㈹㝤愶㕦㌰㉦挲㘱㜱慡攵ㄷ㈸攰挶㈵㠴㍦㕣㠲慦㈷㝣ㄹ㘴搶戴〳晥㐴ぢ㙦晡昱㐸攲ㅦ㈹攱ㅦ㈴晥㈸㜳㜸㑣っ挰㡦戳攰㤰㘱昸㘳〸㝦戴〴㝦㠸昰攵㈶ㅣ搳づ昰愳〱㉦愷挰昱㔰㌵㜱敦扢㜹㔱攲㠶㜹搰㈸挱㈶捦戱㌷搴㈶捣捦慤攴攷攴ㄵ摢㈷〴昷搰㙥㔱㕡〶昳㕣愳戴搴㔲㔴㍥ㄷ攲攳捥㔳㐶改ㄴ㥣ぢ愲昴〶摡㌲㑡㡢搱愳ㄴ愵搳攸ㄷ敥慡捣㈸㜱㑦愹㥣づ㤹㥣㐷㕡㐸攴〱戶㉦慥ㅡ搵㌳㠸㝥户㠴㝥㤳攸戳㑣昴扣㜱㐰昷㔸㘸挸攱昳㜳㠸㝥慦㠴收捥㔲㌹て㌲㜳㘶〰㝥㤸〵㌷㈳㝡㍥攱敦㤷攰㙦ㄳ晥㉢㜳昰㌶づ㥥〱扡ㅣ愱㡢愰㘹攲㑥㙦昳㈲挴敤攱愰ㄱ慡㕤戹捤愴㈳㍦㤹㤰㌰㍦昷㐸搴㕣昳㔴㙥搴㘷㙤〹挱ㅤ愳㕢㠴㜴㤸攷ㅡ愱昹㤶愲昲㤹ㄱ㉦昷㝤慥㔷摢昲㘹〴昳㜱㜸挷㕦㈰攰㐳捡摥っ㝦㍤ㅥ㤲㌱挵摣慡攱昷攳㙣㜷户晣改㜵㈸敥搲捥攳㙦〰捣挰〳〹戸㌷ㅢ㝦ㄲ搲晡ㅤづて㉡昰愶㔷晢㍥㘰㔵戶搸㔹挹捣捣攳挶攰晡㑣㝢〱て㤲愴ㅢ昰っ㜳戱㠸㍦㈳昹敦㜰ぢ㌷㝥っ慦㠳㠳昰㌲㙦摥㜶晤ㅤ㥡㍦㌰扢敥㡡㑣ㄷ㤶晤㘱㍦摡㕦挳㥢扢㌷敦㤹ㄲ攵搷㐸㌹攷㈳ぢ㘹挷㈳ぢ㜵攲ㄷ〸戳昹㙢搲戱ㅥ戹攳攰敦愴敡攵㑣攰㉢㐰昸㝣慥㉣〹㠱㌴慡㔷㐲㈲敦慣㤰挴攳攵㡥戸昲〴㜹㜷挰㔴㝡愰攲㈱晤㈱㐳㜸搶昶慢㡥扢愸挱㌶㤴㌸㤲愷㍥搷愹昳敦攸㌶攴㍡扢㡤㥥〵挵慥搲摦捥挵晤㑡㜸攲㕦扤ち㈸ㅥ㡡㙦㍣㝣㠳扢㤹挱愹㔷㍢愵摣愶㐹改㌵㑥改㄰㕢㝡慤㔳扡〵ㅡ捣㙥㤵㉥慢ㄳ戳㕤㕤㜳〳㜴㉡㕤㔳㜶换㑤ㄴ慤㠷挴㜴㡢搸ち㙤扡挶㝥〹㙥㔹愴ㄱ户㠰愱㠲㙦㌱搲㤶摥敡㤴㜲〷㈲戱户㌹愵㍢搹搲摢㥤搲㕤搱㜰ㄸ扣慦慢挱㜷〱㔴㘱昰㙦㈸㕡てㅢ㉣㠳㈷愰摤捦攰㥦㐱㈰㡤戸ㄷ㑣挹攰㤰㉤晤慤㔳ㅡ戵愵昷㌹愵㝢搸搲晢㥤搲〴ㅡづ㠳㈷扢ㅡ扣づ愰ち㠳搷㔳戴扥㙣㜰㉢摡晤っ收攵慣㌴昸㈱㌰㈵㠳愷摢搲つ㑥改㑣㕢晡戰㔳摡㘱㑢ㅦ㜱㑡㜹㌵攷㌰㌸攲㙡昰攳〰㔵ㄸ晣〷㡡搶㤷つ㍥〴敤㝥〶昳摡㑥ㅡ晣〴㤸㤲挱㈹㕢晡愴㔳扡挰㤶㍥攵㤴㉥戴愵㑦㍢愵㠷愳攱㌰㜸愲慢挱捦〱㔴㘱昰ぢㄴ慤㉦ㅢ㕣㐰扢㥦挱㑢㈰㤰〶扦〴愶㘴昰㤱戶昴㘵愷㤴㤷㉤ㄲ晢㡡㔳㝡扣㉤㝤搵㈹攵昷扣挳攰戱慥〶扦〱㔰㠵挱㙦㔲戴扥㙣昰㘹㘸昷㌳昸っ〸愴ㄱ㙦㠳㈹ㄹ㝣㡥㉤㝤挷㈹㍤摦㤶扥敢㤴㕥㘴㑢摦㜳㐸扤㤷愳昱愳ㄷ㙦搶㥡戶挲搷㥣昵㠷挱昹愰搱㠴㙥晥㔹㜰户攷㔶晡㍦搷昵㍥㡥㈳戸攲㜲っ昵〳㡢㘱愳改㉡慢搱㠰㑦㑦ㄳ搷㍢㡡捤ㄶ搷戹㜲㡢敢㕢愹㈵戸㜶搱㝣昵㐳㡡㙦戲㜴敡㥦㉣㐶㡥捤㈵慡搴愳㠹㑢㔳戹㜵㕢扦ㄶ㤷愲㤲㑥摣㠵㤶ㅣ晢捦ㄴ㜳㠵愱㑥晤挸㘲搸㘸扡搷㙡㤸㤶㜲ㄵ㈹昵㙦攲敡㔱㙥㜱搵㈸戵〴㔷〴㌹昶㕦㈸㕥㙦改搴㡦㉤㐶㡥捤㠹㕦敡搱挴〹㕦㙥㜱愲㤷㕢㡦㌸㕢㠲㤳㔷㡥晤㔷㡡㌹㙦㠹㔴㌷㔹っㅢ㑤㑦㔸つ搳㙥捥捤昲㘸㥣㤳攵ㄶ攷㘲愹㈵㌸捦攴搸㥦㔰捣㈹㐶㥤晡愹挵戰搱挴改㔴敡搱挴㘹㔴㙥㜱晡㤴㕢㥣㌶愵㤶攰㤴㤰㘳晦㡤㘲捥〶敡搴扦㕢っㅢ㑤㙦㕢つ搳㙥㘶㝣愹㝦ㄳ㌳扤摣㘲㠶㤷㕡㐲愶ㅥ㐷晢っ㘲晢攵晢〰つ㜹㘹晥㌹ㄸ㕣㥡换㈴ㅡ㠰㘲㌲㐹搴㤷㈶㑡愶挳〰ㄴ搳㐲愲扥㌶㔱㌲戰〳㔰っ戰㐴晤挳㐴挹㄰つ㐰㌱㔴ㄲ昵㥤㠹㤲捥ㅥ㠰愲搳㈵㡡ㄴ搶㑢户つ㐰搱㝤ㄲ㠵愷慣㠰昲搹づ㄰㍣㘷戹て昹昶ㅢ㜳ㅦ搲㠲扥つ〲㡦㤹搸㡡㝦㔴㈸㜸㘶戲挷㌷ㄵち㥥㡣㔴㝣㕤愱愰晤㔲昱㔵㠵㠲㈶㐹挵㤷ㄵち㕡㈹ㄵ㕦昴㔷っ昹㕦散㐶攲愴
A34: Decisioneering:7.0.0.0 | N34: Decisioneering:7.0.0.0

Sheet Pie Charts
A2: SELECT CASE ====> | B2: 2 Rotor | C2: Estimated C-Plane Cost | D2: Cost per kW
A3: Rated Power (kW per Platform) | B3: =IF($B$2="Target",'1.2 Input'!C10,IF($B$2="4 ROTOR",'1.2 Input'!E10,IF($B$2="PDR",'1.2 Input'!G10,IF($B$2="2 Rotor",'1.2 Input'!I10,"SELECT")))) -> 2350 | C3: cents/kWh | D3: $/kW
A5: CAPEX ($/C-Plane) - incl Gross Margin | B5: =IF($B$2="Target",'2.0 Results'!D10,IF($B$2="4 ROTOR",'2.0 Results'!F10,IF($B$2="PDR",'2.0 Results'!H10,IF($B$2="2 Rotor",'2.0 Results'!J10,"SELECT")))) -> 13098862.9 | D5: =B5/$B$3 -> 5573.984214
A7: Platform | B7: =IF($B$2="Target",'2.0 Results'!D12,IF($B$2="4 ROTOR",'2.0 Results'!F12,IF($B$2="PDR",'2.0 Results'!H12,IF($B$2="2 Rotor",'2.0 Results'!J12,"SELECT")))) -> 4604075.157 | C7: =B7*CRF/$B$23*100 -> 3.014115 | D7: =B7/$B$3 -> 1959.180918
B8: =IF($B$2="Target",'2.0 Results'!D13,IF($B$2="4 ROTOR",'2.0 Results'!F13,IF($B$2="PDR",'2.0 Results'!H13,IF($B$2="2 Rotor",'2.0 Results'!J13,"SELECT")))) -> 0 | D8: =B8/$B$3 -> 0
A9: Drivetrain | B9: =IF($B$2="Target",'2.0 Results'!D14,IF($B$2="4 ROTOR",'2.0 Results'!F14,IF($B$2="PDR",'2.0 Results'!H14,IF($B$2="2 Rotor",'2.0 Results'!J14,"SELECT")))) -> 2608132.414 | C9: =B9*CRF/$B$23*100 -> 1.707446287 | D9: 1109.84358
B10: =IF($B$2="Target",'2.0 Results'!D15,IF($B$2="4 ROTOR",'2.0 Results'!F15,IF($B$2="PDR",'2.0 Results'!H15,IF($B$2="2 Rotor",'2.0 Results'!J15,"SELECT")))) -> 0 | D10: 0
A11: Assembly | B11: =IF($B$2="Target",'2.0 Results'!D16,IF($B$2="4 ROTOR",'2.0 Results'!F16,IF($B$2="PDR",'2.0 Results'!H16,IF($B$2="2 Rotor",'2.0 Results'!J16,"SELECT")))) -> 360610.3785 | C11: =B11*CRF/$B$23*100 -> 0.2360780644 | D11: 153.4512249
B12: =IF($B$2="Target",'2.0 Results'!D17,IF($B$2="4 ROTOR",'2.0 Results'!F17,IF($B$2="PDR",'2.0 Results'!H17,IF($B$2="2 Rotor",'2.0 Results'!J17,"SELECT")))) -> 0 | D12: 0
A13: Mooring | B13: =IF($B$2="Target",'2.0 Results'!D18,IF($B$2="4 ROTOR",'2.0 Results'!F18,IF($B$2="PDR",'2.0 Results'!H18,IF($B$2="2 Rotor",'2.0 Results'!J18,"SELECT")))) -> 750670.7793 | C13: =B13*CRF/$B$23*100 -> 0.4914359517 | D13: 319.4343742
B14: =IF($B$2="Target",'2.0 Results'!D19,IF($B$2="4 ROTOR",'2.0 Results'!F19,IF($B$2="PDR",'2.0 Results'!H19,IF($B$2="2 Rotor",'2.0 Results'!J19,"SELECT")))) -> 0 | D14: 0
A15: Grid Connect | B15: =IF($B$2="Target",'2.0 Results'!D20,IF($B$2="4 ROTOR",'2.0 Results'!F20,IF($B$2="PDR",'2.0 Results'!H20,IF($B$2="2 Rotor",'2.0 Results'!J20,"SELECT")))) -> 1433319.535 | C15: =B15*CRF/$B$23*100 -> 0.9383404405 | D15: 609.9232063
B16: =IF($B$2="Target",'2.0 Results'!D21,IF($B$2="4 ROTOR",'2.0 Results'!F21,IF($B$2="PDR",'2.0 Results'!H21,IF($B$2="2 Rotor",'2.0 Results'!J21,"SELECT")))) -> 0 | D16: 0
A17: Installation | B17: =IF($B$2="Target",'2.0 Results'!D22,IF($B$2="4 ROTOR",'2.0 Results'!F22,IF($B$2="PDR",'2.0 Results'!H22,IF($B$2="2 Rotor",'2.0 Results'!J22,"SELECT")))) -> 986744.186 | C17: =B17*CRF/$B$23*100 -> 0.6459843403 | D17: 419.891143
B18: =IF($B$2="Target",'2.0 Results'!D23,IF($B$2="4 ROTOR",'2.0 Results'!F23,IF($B$2="PDR",'2.0 Results'!H23,IF($B$2="2 Rotor",'2.0 Results'!J23,"SELECT")))) -> 0 | D18: 0
A19: Gross Margin | B19: =IF($B$2="Target",'2.0 Results'!D24,IF($B$2="4 ROTOR",'2.0 Results'!F24,IF($B$2="PDR",'2.0 Results'!H24,IF($B$2="2 Rotor",'2.0 Results'!J24,"SELECT")))) -> 2355310.453 | C19: =B19*CRF/$B$23*100 -> 1.541933249 | D19: 1002.259767
B20: =IF($B$2="Target",'2.0 Results'!D25,IF($B$2="4 ROTOR",'2.0 Results'!F25,IF($B$2="PDR",'2.0 Results'!H25,IF($B$2="2 Rotor",'2.0 Results'!J25,"SELECT")))) -> 0 | D20: 0
A21: OPEX | B21: =IF($B$2="Target",'2.0 Results'!D26,IF($B$2="4 ROTOR",'2.0 Results'!F26,IF($B$2="PDR",'2.0 Results'!H26,IF($B$2="2 Rotor",'2.0 Results'!J26,"SELECT")))) -> 186580.2 | C21: =B21/$B$23*100 -> 1.526838074
B22: =IF($B$2="Target",'2.0 Results'!D27,IF($B$2="4 ROTOR",'2.0 Results'!F27,IF($B$2="PDR",'2.0 Results'!H27,IF($B$2="2 Rotor",'2.0 Results'!J27,"SELECT")))) -> 0
A23: Net Annual Energy Production (kWh/yr) | B23: =IF($B$2="Target",'2.0 Results'!D28,IF($B$2="4 ROTOR",'2.0 Results'!F28,IF($B$2="PDR",'2.0 Results'!H28,IF($B$2="2 Rotor",'2.0 Results'!J28,"SELECT")))) -> 12220038.47
A25: Financial:
A26: Discount rate | B26: =IF($B$2="Target",'2.0 Results'!D31,IF($B$2="4 ROTOR",'2.0 Results'!F31,IF($B$2="PDR",'2.0 Results'!H31,IF($B$2="2 Rotor",'2.0 Results'!J31,"SELECT")))) -> 0.07
A27: IWF | B27: =IF($B$2="Target",'2.0 Results'!D32,IF($B$2="4 ROTOR",'2.0 Results'!F32,IF($B$2="PDR",'2.0 Results'!H32,IF($B$2="2 Rotor",'2.0 Results'!J32,"SELECT")))) -> 0.01
A30: Cost of Energy (cents/kWh) | B30: =IF($B$2="Target",'2.0 Results'!D35,IF($B$2="4 ROTOR",'2.0 Results'!F35,IF($B$2="PDR",'2.0 Results'!H35,IF($B$2="2 Rotor",'2.0 Results'!J35,"SELECT")))) -> 10.10217141 | C30: =SUM(C7:C21) -> 10.10217141
A32: Power Density (W / kg) | B32: =IF($B$2="Target",'2.0 Results'!D37,IF($B$2="4 ROTOR",'2.0 Results'!F37,IF($B$2="PDR",'2.0 Results'!H37,IF($B$2="2 Rotor",'2.0 Results'!J37,"SELECT")))) -> 3.500874177
A34: Energy Density (kWh / kg) | B34: =IF($B$2="Target",'2.0 Results'!D39,IF($B$2="4 ROTOR",'2.0 Results'!F39,IF($B$2="PDR",'2.0 Results'!H39,IF($B$2="2 Rotor",'2.0 Results'!J39,"SELECT")))) -> 9.102301513 | G34: =C30 -> 10.10217141 | H34: cents/kWh | M34: =B5 -> 13098862.9 | N34: $/C-Plane | T34: =D5 -> 5573.984214 | U34: $/kW
A36: Breakdown of COE
A37: CAPEX | B37: =IF($B$2="Target",'2.0 Results'!D42,IF($B$2="4 ROTOR",'2.0 Results'!F42,IF($B$2="PDR",'2.0 Results'!H42,IF($B$2="2 Rotor",'2.0 Results'!J42,"SELECT")))) -> 0.8488604071
A38: Platform | B38: =IF($B$2="Target",'2.0 Results'!D43,IF($B$2="4 ROTOR",'2.0 Results'!F43,IF($B$2="PDR",'2.0 Results'!H43,IF($B$2="2 Rotor",'2.0 Results'!J43,"SELECT")))) -> 0.2983630824
A40: Drivetrain | B40: =IF($B$2="Target",'2.0 Results'!D45,IF($B$2="4 ROTOR",'2.0 Results'!F45,IF($B$2="PDR",'2.0 Results'!H45,IF($B$2="2 Rotor",'2.0 Results'!J45,"SELECT")))) -> 0.1690177505
A42: Assembly cost | B42: =IF($B$2="Target",'2.0 Results'!D47,IF($B$2="4 ROTOR",'2.0 Results'!F47,IF($B$2="PDR",'2.0 Results'!H47,IF($B$2="2 Rotor",'2.0 Results'!J47,"SELECT")))) -> 0.02336904165
A44: Mooring Lines & Attachments | B44: =IF($B$2="Target",'2.0 Results'!D49,IF($B$2="4 ROTOR",'2.0 Results'!F49,IF($B$2="PDR",'2.0 Results'!H49,IF($B$2="2 Rotor",'2.0 Results'!J49,"SELECT")))) -> 0.04864656635 | I44: =(2*'3.4 2 ROTOR'!N10+2*'3.4 2 ROTOR'!N24)/'Pie Charts'!B5 -> 0.2205730963
A46: Grid Connect | B46: =IF($B$2="Target",'2.0 Results'!D51,IF($B$2="4 ROTOR",'2.0 Results'!F51,IF($B$2="PDR",'2.0 Results'!H51,IF($B$2="2 Rotor",'2.0 Results'!J51,"SELECT")))) -> 0.09288502468
A48: Installation cost | B48: =IF($B$2="Target",'2.0 Results'!D53,IF($B$2="4 ROTOR",'2.0 Results'!F53,IF($B$2="PDR",'2.0 Results'!H53,IF($B$2="2 Rotor",'2.0 Results'!J53,"SELECT")))) -> 0.06394509796
A50: Gross Margin | B50: =IF($B$2="Target",'2.0 Results'!D55,IF($B$2="4 ROTOR",'2.0 Results'!F55,IF($B$2="PDR",'2.0 Results'!H55,IF($B$2="2 Rotor",'2.0 Results'!J55,"SELECT")))) -> 0.1526338435
A52: OPEX | B52: =IF($B$2="Target",'2.0 Results'!D57,IF($B$2="4 ROTOR",'2.0 Results'!F57,IF($B$2="PDR",'2.0 Results'!H57,IF($B$2="2 Rotor",'2.0 Results'!J57,"SELECT")))) -> 0.1511395929
A53: Total contribution | B53: =IF($B$2="Target",'2.0 Results'!D58,IF($B$2="4 ROTOR",'2.0 Results'!F58,IF($B$2="PDR",'2.0 Results'!H58,IF($B$2="2 Rotor",'2.0 Results'!J58,"SELECT")))) -> 1
A63: Local List Values
A64: Target
A65: 4 ROTOR
A66: PDR
A67: 2 Rotor

Sheet Risked_Results (hidden)
A1: Percentiles | B1: Base Case - Assembly | C1: Base Case - COE | D1: Base Case - COE Assembly | E1: Base Case - COE CAPEX | F1: Base Case - COE Drivetrain | G1: Base Case - COE Grid Connect | H1: Base Case - COE Gross Margin | I1: Base Case - COE Installation | J1: Base Case - COE Mooring | K1: Base Case - COE OPEX | L1: Base Case - COE Platform | M1: Base Case - Drivertrain | N1: Base Case - Grid Connect | O1: Base Case - Gross Margin | P1: Base Case - Installation | Q1: Base Case - Mooring | R1: Base Case - Net AEP | S1: Base Case - OPEX | T1: Base Case - Platform | U1: Base Case - Total CAPEX | V1: Check_Distribution
A2: 10% | B2: 678474.5725 | C2: 14.48816244 | D2: 0.3456613939 | E2: 11.94383425 | F2: 1.482363595 | G2: 0.6330391827 | H2: 2.094198398 | I2: 0.3501595911 | J2: 1.118135051 | K2: 2.502991374 | L2: 5.799958686 | M2: 2909627.816 | N2: 1242548.333 | O2: 4110555.556 | P2: 687303.7691 | Q2: 2194709.083 | R2: 15702640.43 | S2: 393035.7356 | T2: 11384333.22 | U2: 23443716.83 | V2: 1372149.593
A3: 50% | B3: 947381.0823 | C3: 17.97459406 | D3: 0.4826607786 | E3: 15.44344116 | F3: 2.089584518 | G3: 0.8797600441 | H3: 2.094198398 | I3: 0.4820240701 | J3: 1.488935259 | K3: 2.55479462 | L3: 7.936311986 | M3: 4101499.292 | N3: 1726819.455 | O3: 4110555.556 | P3: 946131.3317 | Q3: 2922526.875 | R3: 15702640.43 | S3: 401170.213 | T3: 15577631.69 | U3: 30312850.45 | V3: 1909590.508
A4: 90% | B4: 1195815.237 | C4: 21.61464977 | D4: 0.6092301443 | E4: 19.00929519 | F4: 2.85483287 | G4: 1.109983439 | H4: 2.094198398 | I4: 0.6166422102 | J4: 1.734006967 | K4: 2.627459822 | L4: 10.13680028 | M4: 5603551.757 | N4: 2178708.854 | O4: 4110555.556 | P4: 1210363.863 | Q4: 3403560.988 | R4: 15702640.43 | S4: 412580.5685 | T4: 19896816.24 | U4: 37312015.9 | V4: 2441031.191
T6: 15500000
T7: =T4-T6 -> 4396816.244
T8: =T7/T6 -> 0.2836655641

Sheet 2.1 Results Risked
B2: Cost of Energy Model
B3: Aquantis
B5: COE Results
B7: Risked
D9: TARGET | F9: 4 ROTOR | H9: Configuration 1 | J9: Configuration 2
B10: CAPEX ($/C-Plane) - incl Gross Margin | D10: ='3.0 Summary CAPEX'!D24 -> 8431911.112 | E10: =IF(D10="","",HYPERLINK("["&(MID(CELL("filename"),SEARCH("[",CELL("filename"))+1, SEARCH("]",CELL("filename"))-SEARCH("[",CELL("filename"))-1))&"]"&(IF(D10=0,"",DisplayFormula(D10))), "link")) -> link | F10: ='3.1 Summary Risked CAPEX'!F24 -> 2360935.111 | G10: =IF(F10="","",HYPERLINK("["&(MID(CELL("filename"),SEARCH("[",CELL("filename"))+1, SEARCH("]",CELL("filename"))-SEARCH("[",CELL("filename"))-1))&"]"&(IF(F10=0,"",DisplayFormula(F10))), "link")) -> link | H10: ='3.1 Summary Risked CAPEX'!H24 ->  | I10: =IF(H10="","",HYPERLINK("["&(MID(CELL("filename"),SEARCH("[",CELL("filename"))+1, SEARCH("]",CELL("filename"))-SEARCH("[",CELL("filename"))-1))&"]"&(IF(H10=0,"",DisplayFormula(H10))), "link")) ->  | J10: ='3.1 Summary Risked CAPEX'!J24 ->  | K10: =IF(J10="","",HYPERLINK("["&(MID(CELL("filename"),SEARCH("[",CELL("filename"))+1, SEARCH("]",CELL("filename"))-SEARCH("[",CELL("filename"))-1))&"]"&(IF(J10=0,"",DisplayFormula(J10))), "link")) -> 
B12: Platform | C12: LaGrassa spreadsheet | D12: ='3.0 Summary CAPEX'!D7 -> 2428390.4 | E12: =IF(D12="","",HYPERLINK("["&(MID(CELL("filename"),SEARCH("[",CELL("filename"))+1, SEARCH("]",CELL("filename"))-SEARCH("[",CELL("filename"))-1))&"]"&(IF(D12=0,"",DisplayFormula(D12))), "link")) -> link | F12: ='3.1 Summary Risked CAPEX'!F7 -> 0 | G12: =IF(F12="","",HYPERLINK("["&(MID(CELL("filename"),SEARCH("[",CELL("filename"))+1, SEARCH("]",CELL("filename"))-SEARCH("[",CELL("filename"))-1))&"]"&(IF(F12=0,"",DisplayFormula(F12))), "link")) -> link | H12: ='3.1 Summary Risked CAPEX'!H7 ->  | I12: =IF(H12="","",HYPERLINK("["&(MID(CELL("filename"),SEARCH("[",CELL("filename"))+1, SEARCH("]",CELL("filename"))-SEARCH("[",CELL("filename"))-1))&"]"&(IF(H12=0,"",DisplayFormula(H12))), "link")) ->  | J12: ='3.1 Summary Risked CAPEX'!J7 ->  | K12: =IF(J12="","",HYPERLINK("["&(MID(CELL("filename"),SEARCH("[",CELL("filename"))+1, SEARCH("]",CELL("filename"))-SEARCH("[",CELL("filename"))-1))&"]"&(IF(J12=0,"",DisplayFormula(J12))), "link")) -> 
B14: Drivetrain | C14: LaGrassa spreadsheet | D14: ='3.0 Summary CAPEX'!D9 -> 1821292.8 | E14: =IF(D14="","",HYPERLINK("["&(MID(CELL("filename"),SEARCH("[",CELL("filename"))+1, SEARCH("]",CELL("filename"))-SEARCH("[",CELL("filename"))-1))&"]"&(IF(D14=0,"",DisplayFormula(D14))), "link")) -> link | F14: ='3.1 Summary Risked CAPEX'!F9 -> 0 | G14: =IF(F14="","",HYPERLINK("["&(MID(CELL("filename"),SEARCH("[",CELL("filename"))+1, SEARCH("]",CELL("filename"))-SEARCH("[",CELL("filename"))-1))&"]"&(IF(F14=0,"",DisplayFormula(F14))), "link")) -> link | H14: ='3.1 Summary Risked CAPEX'!H9 ->  | I14: =IF(H14="","",HYPERLINK("["&(MID(CELL("filename"),SEARCH("[",CELL("filename"))+1, SEARCH("]",CELL("filename"))-SEARCH("[",CELL("filename"))-1))&"]"&(IF(H14=0,"",DisplayFormula(H14))), "link")) ->  | J14: ='3.1 Summary Risked CAPEX'!J9 ->  | K14: =IF(J14="","",HYPERLINK("["&(MID(CELL("filename"),SEARCH("[",CELL("filename"))+1, SEARCH("]",CELL("filename"))-SEARCH("[",CELL("filename"))-1))&"]"&(IF(J14=0,"",DisplayFormula(J14))), "link")) -> 
B16: Assembly cost | C16: Calculated | D16: ='3.0 Summary CAPEX'!D11 -> 182129.28 | E16: =IF(D16="","",HYPERLINK("["&(MID(CELL("filename"),SEARCH("[",CELL("filename"))+1, SEARCH("]",CELL("filename"))-SEARCH("[",CELL("filename"))-1))&"]"&(IF(D16=0,"",DisplayFormula(D16))), "link")) -> link | F16: ='3.1 Summary Risked CAPEX'!F11 -> 0 | G16: =IF(F16="","",HYPERLINK("["&(MID(CELL("filename"),SEARCH("[",CELL("filename"))+1, SEARCH("]",CELL("filename"))-SEARCH("[",CELL("filename"))-1))&"]"&(IF(F16=0,"",DisplayFormula(F16))), "link")) -> link | H16: ='3.1 Summary Risked CAPEX'!H11 ->  | I16: =IF(H16="","",HYPERLINK("["&(MID(CELL("filename"),SEARCH("[",CELL("filename"))+1, SEARCH("]",CELL("filename"))-SEARCH("[",CELL("filename"))-1))&"]"&(IF(H16=0,"",DisplayFormula(H16))), "link")) ->  | J16: ='3.1 Summary Risked CAPEX'!J11 ->  | K16: =IF(J16="","",HYPERLINK("["&(MID(CELL("filename"),SEARCH("[",CELL("filename"))+1, SEARCH("]",CELL("filename"))-SEARCH("[",CELL("filename"))-1))&"]"&(IF(J16=0,"",DisplayFormula(J16))), "link")) -> 
B18: Mooring Lines & Attachments | C18: Allie Cribbs spreadsheet | D18: ='3.0 Summary CAPEX'!D13 -> 607097.6001 | E18: =IF(D18="","",HYPERLINK("["&(MID(CELL("filename"),SEARCH("[",CELL("filename"))+1, SEARCH("]",CELL("filename"))-SEARCH("[",CELL("filename"))-1))&"]"&(IF(D18=0,"",DisplayFormula(D18))), "link")) -> link | F18: ='3.1 Summary Risked CAPEX'!F13 -> 0 | G18: =IF(F18="","",HYPERLINK("["&(MID(CELL("filename"),SEARCH("[",CELL("filename"))+1, SEARCH("]",CELL("filename"))-SEARCH("[",CELL("filename"))-1))&"]"&(IF(F18=0,"",DisplayFormula(F18))), "link")) -> link | H18: ='3.1 Summary Risked CAPEX'!H13 ->  | I18: =IF(H18="","",HYPERLINK("["&(MID(CELL("filename"),SEARCH("[",CELL("filename"))+1, SEARCH("]",CELL("filename"))-SEARCH("[",CELL("filename"))-1))&"]"&(IF(H18=0,"",DisplayFormula(H18))), "link")) ->  | J18: ='3.1 Summary Risked CAPEX'!J13 ->  | K18: =IF(J18="","",HYPERLINK("["&(MID(CELL("filename"),SEARCH("[",CELL("filename"))+1, SEARCH("]",CELL("filename"))-SEARCH("[",CELL("filename"))-1))&"]"&(IF(J18=0,"",DisplayFormula(J18))), "link")) -> 
B20: Grid Connect | C20: Karens estimation sheet | D20: ='3.0 Summary CAPEX'!D15 -> 849936.6401 | E20: =IF(D20="","",HYPERLINK("["&(MID(CELL("filename"),SEARCH("[",CELL("filename"))+1, SEARCH("]",CELL("filename"))-SEARCH("[",CELL("filename"))-1))&"]"&(IF(D20=0,"",DisplayFormula(D20))), "link")) -> link | F20: ='3.1 Summary Risked CAPEX'!F15 -> 0 | G20: =IF(F20="","",HYPERLINK("["&(MID(CELL("filename"),SEARCH("[",CELL("filename"))+1, SEARCH("]",CELL("filename"))-SEARCH("[",CELL("filename"))-1))&"]"&(IF(F20=0,"",DisplayFormula(F20))), "link")) -> link | H20: ='3.1 Summary Risked CAPEX'!H15 ->  | I20: =IF(H20="","",HYPERLINK("["&(MID(CELL("filename"),SEARCH("[",CELL("filename"))+1, SEARCH("]",CELL("filename"))-SEARCH("[",CELL("filename"))-1))&"]"&(IF(H20=0,"",DisplayFormula(H20))), "link")) ->  | J20: ='3.1 Summary Risked CAPEX'!J15 ->  | K20: =IF(J20="","",HYPERLINK("["&(MID(CELL("filename"),SEARCH("[",CELL("filename"))+1, SEARCH("]",CELL("filename"))-SEARCH("[",CELL("filename"))-1))&"]"&(IF(J20=0,"",DisplayFormula(J20))), "link")) -> 
B22: Installation Cost | C22: Calculated | D22: ='3.0 Summary CAPEX'!D17 -> 182129.28 | E22: =IF(D22="","",HYPERLINK("["&(MID(CELL("filename"),SEARCH("[",CELL("filename"))+1, SEARCH("]",CELL("filename"))-SEARCH("[",CELL("filename"))-1))&"]"&(IF(D22=0,"",DisplayFormula(D22))), "link")) -> link | F22: ='3.1 Summary Risked CAPEX'!F17 -> 0 | G22: =IF(F22="","",HYPERLINK("["&(MID(CELL("filename"),SEARCH("[",CELL("filename"))+1, SEARCH("]",CELL("filename"))-SEARCH("[",CELL("filename"))-1))&"]"&(IF(F22=0,"",DisplayFormula(F22))), "link")) -> link | H22: ='3.1 Summary Risked CAPEX'!H17 ->  | I22: =IF(H22="","",HYPERLINK("["&(MID(CELL("filename"),SEARCH("[",CELL("filename"))+1, SEARCH("]",CELL("filename"))-SEARCH("[",CELL("filename"))-1))&"]"&(IF(H22=0,"",DisplayFormula(H22))), "link")) ->  | J22: ='3.1 Summary Risked CAPEX'!J17 ->  | K22: =IF(J22="","",HYPERLINK("["&(MID(CELL("filename"),SEARCH("[",CELL("filename"))+1, SEARCH("]",CELL("filename"))-SEARCH("[",CELL("filename"))-1))&"]"&(IF(J22=0,"",DisplayFormula(J22))), "link")) -> 
B24: Gross Margin | C24: Calculated | D24: ='3.0 Summary CAPEX'!D22 -> 2360935.111 | E24: =IF(D24="","",HYPERLINK("["&(MID(CELL("filename"),SEARCH("[",CELL("filename"))+1, SEARCH("]",CELL("filename"))-SEARCH("[",CELL("filename"))-1))&"]"&(IF(D24=0,"",DisplayFormula(D24))), "link")) -> link | F24: ='3.1 Summary Risked CAPEX'!F22 -> 2360935.111 | G24: =IF(F24="","",HYPERLINK("["&(MID(CELL("filename"),SEARCH("[",CELL("filename"))+1, SEARCH("]",CELL("filename"))-SEARCH("[",CELL("filename"))-1))&"]"&(IF(F24=0,"",DisplayFormula(F24))), "link")) -> link | H24: ='3.1 Summary Risked CAPEX'!H22 -> 2360935.111 | I24: =IF(H24="","",HYPERLINK("["&(MID(CELL("filename"),SEARCH("[",CELL("filename"))+1, SEARCH("]",CELL("filename"))-SEARCH("[",CELL("filename"))-1))&"]"&(IF(H24=0,"",DisplayFormula(H24))), "link")) -> link | J24: ='3.1 Summary Risked CAPEX'!J22 -> 2360935.111 | K24: =IF(J24="","",HYPERLINK("["&(MID(CELL("filename"),SEARCH("[",CELL("filename"))+1, SEARCH("]",CELL("filename"))-SEARCH("[",CELL("filename"))-1))&"]"&(IF(J24=0,"",DisplayFormula(J24))), "link")) -> link
B26: OPEX ($/C-Plane/yr) | D26: ='4.0 Summary OPEX'!D13 -> 168638.2222 | E26: =IF(D26="","",HYPERLINK("["&(MID(CELL("filename"),SEARCH("[",CELL("filename"))+1, SEARCH("]",CELL("filename"))-SEARCH("[",CELL("filename"))-1))&"]"&(IF(D26=0,"",DisplayFormula(D26))), "link")) -> link | F26: ='4.0 Summary OPEX'!F21 ->  | G26: =IF(F26="","",HYPERLINK("["&(MID(CELL("filename"),SEARCH("[",CELL("filename"))+1, SEARCH("]",CELL("filename"))-SEARCH("[",CELL("filename"))-1))&"]"&(IF(F26=0,"",DisplayFormula(F26))), "link")) ->  | H26: ='4.0 Summary OPEX'!H21 ->  | I26: =IF(H26="","",HYPERLINK("["&(MID(CELL("filename"),SEARCH("[",CELL("filename"))+1, SEARCH("]",CELL("filename"))-SEARCH("[",CELL("filename"))-1))&"]"&(IF(H26=0,"",DisplayFormula(H26))), "link")) ->  | J26: ='4.0 Summary OPEX'!J21 ->  | K26: =IF(J26="","",HYPERLINK("["&(MID(CELL("filename"),SEARCH("[",CELL("filename"))+1, SEARCH("]",CELL("filename"))-SEARCH("[",CELL("filename"))-1))&"]"&(IF(J26=0,"",DisplayFormula(J26))), "link")) -> 
B28: Net Annual Energy Production (kWh/yr) | D28: ='2.4 Quick COE'!AK24*1000 -> 10539888.89 | E28: =IF(D28="","",HYPERLINK("["&(MID(CELL("filename"),SEARCH("[",CELL("filename"))+1, SEARCH("]",CELL("filename"))-SEARCH("[",CELL("filename"))-1))&"]"&(IF(D28=0,"",DisplayFormula(D28))), "link")) -> link | F28: =_B0_NetAEPCPlane -> 21029557.62 | G28: =IF(F28="","",HYPERLINK("["&(MID(CELL("filename"),SEARCH("[",CELL("filename"))+1, SEARCH("]",CELL("filename"))-SEARCH("[",CELL("filename"))-1))&"]"&(IF(F28=0,"",DisplayFormula(F28))), "link")) -> link | H28: =_C1_NetAEPCPlane -> 15702640.43 | I28: =IF(H28="","",HYPERLINK("["&(MID(CELL("filename"),SEARCH("[",CELL("filename"))+1, SEARCH("]",CELL("filename"))-SEARCH("[",CELL("filename"))-1))&"]"&(IF(H28=0,"",DisplayFormula(H28))), "link")) -> link | J28: =_C2_NetAEPCPlane -> 12220038.47 | K28: =IF(J28="","",HYPERLINK("["&(MID(CELL("filename"),SEARCH("[",CELL("filename"))+1, SEARCH("]",CELL("filename"))-SEARCH("[",CELL("filename"))-1))&"]"&(IF(J28=0,"",DisplayFormula(J28))), "link")) -> link
B30: Financial:
B31: Discount rate | D31: =_B0_DiscountRate -> 0.07 | E31: =IF(D31="","",HYPERLINK("["&(MID(CELL("filename"),SEARCH("[",CELL("filename"))+1, SEARCH("]",CELL("filename"))-SEARCH("[",CELL("filename"))-1))&"]"&(IF(D31=0,"",DisplayFormula(D31))), "link")) -> link | F31: =_B0_DiscountRate -> 0.07 | G31: =IF(F31="","",HYPERLINK("["&(MID(CELL("filename"),SEARCH("[",CELL("filename"))+1, SEARCH("]",CELL("filename"))-SEARCH("[",CELL("filename"))-1))&"]"&(IF(F31=0,"",DisplayFormula(F31))), "link")) -> link | H31: =_C1_DiscountRate -> 0.07 | I31: =IF(H31="","",HYPERLINK("["&(MID(CELL("filename"),SEARCH("[",CELL("filename"))+1, SEARCH("]",CELL("filename"))-SEARCH("[",CELL("filename"))-1))&"]"&(IF(H31=0,"",DisplayFormula(H31))), "link")) -> link | J31: =_C2_DiscountRate -> 0.07 | K31: =IF(J31="","",HYPERLINK("["&(MID(CELL("filename"),SEARCH("[",CELL("filename"))+1, SEARCH("]",CELL("filename"))-SEARCH("[",CELL("filename"))-1))&"]"&(IF(J31=0,"",DisplayFormula(J31))), "link")) -> link
B32: IWF | D32: =_IWF -> 0.01 | E32: =IF(D32="","",HYPERLINK("["&(MID(CELL("filename"),SEARCH("[",CELL("filename"))+1, SEARCH("]",CELL("filename"))-SEARCH("[",CELL("filename"))-1))&"]"&(IF(D32=0,"",DisplayFormula(D32))), "link")) -> link | F32: =_IWF -> 0.01 | G32: =IF(F32="","",HYPERLINK("["&(MID(CELL("filename"),SEARCH("[",CELL("filename"))+1, SEARCH("]",CELL("filename"))-SEARCH("[",CELL("filename"))-1))&"]"&(IF(F32=0,"",DisplayFormula(F32))), "link")) -> link | H32: =_IWF -> 0.01 | I32: =IF(H32="","",HYPERLINK("["&(MID(CELL("filename"),SEARCH("[",CELL("filename"))+1, SEARCH("]",CELL("filename"))-SEARCH("[",CELL("filename"))-1))&"]"&(IF(H32=0,"",DisplayFormula(H32))), "link")) -> link | J32: =_IWF -> 0.01 | K32: =IF(J32="","",HYPERLINK("["&(MID(CELL("filename"),SEARCH("[",CELL("filename"))+1, SEARCH("]",CELL("filename"))-SEARCH("[",CELL("filename"))-1))&"]"&(IF(J32=0,"",DisplayFormula(J32))), "link")) -> link
B35: Cost of Energy (cents/kWh) | D35: =((D31+D32)*D10+D26)/D28*100 -> 8 | F35: =((F31+F32)*F10+F26)/F28*100 ->  | H35: =((H31+H32)*H10+H26)/H28*100 ->  | J35: =((J31+J32)*J10+J26)/J28*100 -> 
B37: Power Density (W / kg) | D37: =_B0_RatedCPlanePower/_B0_WeightCPlane*1000 -> 2.482007779 | F37: =_B0_RatedCPlanePower/_B0_WeightCPlane*1000 -> 2.482007779 | H37: =_C1_RatedCPlanePower/_C1_WeightCPlane*1000 -> 1.546358414 | J37: =_C2_RatedCPlanePower/_C2_WeightCPlane*1000 -> 3.500874177
B39: Energy Density (kWh / kg) | D39: =_B0_NetAEP/_B0_WeightCPlane -> 3.262220349 | F39: =_B0_NetAEP/_B0_WeightCPlane -> 3.262220349 | H39: =_C1_NetAEP/_C1_WeightCPlane -> 1.897024231 | J39: =_C2_NetAEP/_C2_WeightCPlane -> 9.102301513
B41: Breakdown of COE
B42: CAPEX | D42: =(((D31+D32)*D10)/D28*100)/D35 -> 0.8 | F42: =(((F31+F32)*F10)/F28*100)/F35 ->  | H42: =(((H31+H32)*H10)/H28*100)/H35 ->  | J42: =(((J31+J32)*J10)/J28*100)/J35 -> 
B43: Platform | D43: =(((D$31+D$32)*D12)/D$28*100)/D$35 -> 0.2304 | F43: =(((F$31+F$32)*F12)/F$28*100)/F$35 ->  | H43: =(((H$31+H$32)*H12)/H$28*100)/H$35 ->  | J43: =(((J$31+J$32)*J12)/J$28*100)/J$35 -> 
B45: Drivetrain | D45: =(((D$31+D$32)*D14)/D$28*100)/D$35 -> 0.1728 | F45: =(((F$31+F$32)*F14)/F$28*100)/F$35 ->  | H45: =(((H$31+H$32)*H14)/H$28*100)/H$35 ->  | J45: =(((J$31+J$32)*J14)/J$28*100)/J$35 -> 
B47: Assembly cost | D47: =(((D$31+D$32)*D16)/D$28*100)/D$35 -> 0.01728 | F47: =(((F$31+F$32)*F16)/F$28*100)/F$35 ->  | H47: =(((H$31+H$32)*H16)/H$28*100)/H$35 ->  | J47: =(((J$31+J$32)*J16)/J$28*100)/J$35 -> 
B49: Mooring Lines & Attachments | D49: =(((D$31+D$32)*D18)/D$28*100)/D$35 -> 0.0576 | F49: =(((F$31+F$32)*F18)/F$28*100)/F$35 ->  | H49: =(((H$31+H$32)*H18)/H$28*100)/H$35 ->  | J49: =(((J$31+J$32)*J18)/J$28*100)/J$35 -> 
B51: Grid Connect | D51: =(((D$31+D$32)*D20)/D$28*100)/D$35 -> 0.08064 | F51: =(((F$31+F$32)*F20)/F$28*100)/F$35 ->  | H51: =(((H$31+H$32)*H20)/H$28*100)/H$35 ->  | J51: =(((J$31+J$32)*J20)/J$28*100)/J$35 -> 
B53: Installation cost | D53: =(((D$31+D$32)*D22)/D$28*100)/D$35 -> 0.01728 | F53: =(((F$31+F$32)*F22)/F$28*100)/F$35 ->  | H53: =(((H$31+H$32)*H22)/H$28*100)/H$35 ->  | J53: =(((J$31+J$32)*J22)/J$28*100)/J$35 -> 
B55: Gross Margin | D55: =(((D$31+D$32)*D24)/D$28*100)/D$35 -> 0.224 | F55: =(((F$31+F$32)*F24)/F$28*100)/F$35 ->  | H55: =(((H$31+H$32)*H24)/H$28*100)/H$35 ->  | J55: =(((J$31+J$32)*J24)/J$28*100)/J$35 -> 
B57: OPEX | D57: =((D26)/D28*100)/D35 -> 0.2 | F57: =((F26)/F28*100)/F35 ->  | H57: =((H26)/H28*100)/H35 ->  | J57: =((J26)/J28*100)/J35 -> 
B58: Total contribution | D58: =D42+D57 -> 1 | F58: =F42+F57 ->  | H58: =H42+H57 ->  | J58: =J42+J57 -> 
B63: Cost of Energy Calculation Method - Using DOE FOA procedure
B64: COE | C64: = | D64: (DR+IWF) x ICC + LRC + O&M
D65: AEPnet
B67: COE | C67: º | D67: Levelized Cost of Energy ($/kWh) (constant dollars)
B68: DR | C68: º | D68: Discount Rate (1/yr)
B69: IWF | C69: º | D69: Insurance, Warranty and Fees (1/yr)
B70: ICC | C70: º | D70: Initial Installed Capital Cost ($)
C72: º | D72: TURCC + BOSCC
B73: TURCC | C73: º | D73: Turbine Capital Cost ($)
B74: BOSCC | C74: º | D74: Balance of System Capital Cost ($)
B75: LRC | C75: º | D75: Levelized Replacement/Overhaul Cost ($/yr)
B76: O&M | C76: º | D76: Levelized O&M Cost ($/yr)
B77: AEPnet | C77: º | D77: Net Annual Energy Production (kWh/yr)
AB81: Waterfall data
AB82: Target | AC82: Base Case | AF82: =AA90 -> OPEX | AG82: =AA89 -> Gross Margin | AH82: =AA88 -> Platform | AI82: =AA87 -> Drivetrain | AJ82: =AA86 -> Mooring | AK82: =AA85 -> Grid | AL82: =AA84 -> Misc Capex | AM82: AEP Increase | AQ82: OPEX | AR82: Gross Margin | AS82: Platform | AT82: Drivetrain | AU82: Mooring | AV82: Grid | AW82: Misc Capex | AX82: AEP Increase | BB82: OPEX | BC82: Gross Margin | BD82: Platform | BE82: Drivetrain | BF82: Mooring | BG82: Grid | BH82: Misc Capex | BI82: AEP Increase | BJ82: Goal | BM82: Graph data / Cost of Energy - [cents/kWh] | BN82: =CONCATENATE("Target (",ROUND(BN93,2),")") -> Target (8) | BR82: =CONCATENATE("Base Case (",ROUND(BR93,2),")") ->  | BV82: =CONCATENATE("Configuration 1 (",ROUND(BV93,2),")") ->  | BZ82: =CONCATENATE("Configuration 2 (",ROUND(BZ93,2),")") ->  | CH82: Total C-Plane Cost | CI82: =CONCATENATE("Target (",ROUND(CI91/1000000,2),")") -> Target (8.43) | CQ82: =CONCATENATE("Base Case (",ROUND(CQ91/1000000,2),")") -> Base Case (2.36) | CZ82: =CONCATENATE("Configuration 1 (",ROUND(CZ91/1000000,2),")") ->  | DH82: =CONCATENATE("Configuration 2 (",ROUND(DH91/1000000,2),")") ->  | DS82: Total C-Plane Cost | DT82: =CONCATENATE("Target (",ROUND(DT91,2),")") -> Target (6.4) | EB82: =CONCATENATE("Base Case (",ROUND(EB91,2),")") -> Base Case (0.9) | EK82: =CONCATENATE("Configuration 1 (",ROUND(EK91,2),")") ->  | ES82: =CONCATENATE("Configuration 2 (",ROUND(ES91,2),")") -> 
B83: COE Breakdown of costs | D83: TARGET | F83: Base Case | H83: Configuration 1 | J83: Configuration 2 | AB83: =CONCATENATE(AB82," (",ROUND(AB93,2),")") -> Target (8) | AC83: =CONCATENATE(AC82," (",ROUND(AC93,2),")") ->  | AD83: AEP Corrected | AE83: Differences | AF83: =CONCATENATE(TEXT(AF95,"0%")," ",AF82," decrease") ->  | AM83: =CONCATENATE(TEXT(AM95,"0%")," ",AM82) -> -100% AEP Increase | AN83: Configuration 1 | AO83: AEP Corrected | AP83: Differences | AQ83: =CONCATENATE(TEXT(AQ95,"0%")," ",AQ82," decrease") ->  | AX83: =CONCATENATE(TEXT(AX95,"0%")," ",AX82) -> -49% AEP Increase | AY83: Configuration 2 | AZ83: AEP Corrected | BA83: Differences | BB83: =CONCATENATE(TEXT(BB95,"0%")," ",BB82," decrease") ->  | BI83: =CONCATENATE(TEXT(BI95,"0%")," ",BI82) -> -16% AEP Increase | BJ83: =CONCATENATE(BJ82," (",ROUND(BJ93,2),")") -> Goal (8) | BN83: CAPEX | BO83: Gross Margin, 28% | BP83: OPEX | BQ83: =BN82 -> Target (8) | BR83: CAPEX | BS83: Gross Margin, 28% | BT83: OPEX | BU83: =BR82 ->  | BV83: CAPEX | BW83: Gross Margin, 28% | BX83: OPEX | BY83: =BV82 ->  | BZ83: CAPEX | CA83: Gross Margin, 28% | CB83: OPEX | CC83: =BZ82 ->  | CI83: Total CAPEX | CJ83: Platform | CK83: Drivetrain | CL83: Mooring | CM83: Grid | CN83: Misc Capex | CO83: Gross Margin | CP83: =CI82 -> Target (8.43) | CQ83: Total CAPEX | CS83: Platform | CT83: Drivetrain | CU83: Mooring | CV83: Grid | CW83: Misc Capex | CX83: Gross Margin | CY83: =CQ82 -> Base Case (2.36) | CZ83: Total CAPEX | DA83: Platform | DB83: Drivetrain | DC83: Mooring | DD83: Grid | DE83: Misc Capex | DF83: Gross Margin | DG83: =CZ82 ->  | DH83: Total CAPEX | DI83: Platform | DJ83: Drivetrain | DK83: Mooring | DL83: Grid | DM83: Misc Capex | DN83: Gross Margin | DO83: =DH82 ->  | DT83: Total CAPEX | DU83: Platform | DV83: Drivetrain | DW83: Mooring | DX83: Grid | DY83: Misc Capex | DZ83: Gross Margin | EA83: =DT82 -> Target (6.4) | EB83: Total CAPEX | ED83: Platform | EE83: Drivetrain | EF83: Mooring | EG83: Grid | EH83: Misc Capex | EI83: Gross Margin | EJ83: =EB82 -> Base Case (0.9) | EK83: Total CAPEX | EL83: Platform | EM83: Drivetrain | EN83: Mooring | EO83: Grid | EP83: Misc Capex | EQ83: Gross Margin | ER83: =EK82 ->  | ES83: Total CAPEX | ET83: Platform | EU83: Drivetrain | EV83: Mooring | EW83: Grid | EX83: Misc Capex | EY83: Gross Margin | EZ83: =ES82 -> 
B84: Total COE | F84: =F35 ->  | AA84: =BM84 -> Misc Capex | AB84: 0.27648 | AC84: =BR84 ->  | AD84: =AC84*(1-AD$94) ->  | AE84: =AD84-$AB84 ->  | AL84: =AE84 ->  | AN84: =BV84 ->  | AO84: =AN84*(1-AO$94) ->  | AP84: =AO84-$AB84 ->  | AW84: =AP84 ->  | AY84: =BZ84 ->  | AZ84: =AY84*(1-AZ$94) ->  | BA84: =AZ84-$AB84 ->  | BH84: =BA84 ->  | BJ84: =AB84 -> 0.27648 | BM84: Misc Capex | BN84: =(D47+D53)*BN93 -> 0.27648 | BR84: =(F47+F53)*BR93 ->  | BV84: =(H47+H53)*BV93 ->  | BZ84: =(J47+J53)*BZ93 ->  | CH84: Misc Capex | CI84: =D22+D16 -> 364258.5601 | CN84: =CI84 -> 364258.5601 | CQ84: =F22+F16 -> 0 | CW84: =CQ84 -> 0 | CZ84: =H22+H16 ->  | DE84: =CZ84 ->  | DH84: =J22+J16 ->  | DM84: =DH84 ->  | DS84: Misc Capex | DT84: =CI84*0.08/DT$92*100 -> 0.27648 | DY84: =DT84 -> 0.27648 | EB84: =CQ84*0.08/EB$92*100 -> 0 | EH84: =EB84 -> 0 | EK84: =CZ84*0.08/EK$92*100 ->  | EP84: =EK84 ->  | ES84: =DH84*0.08/ES$92*100 ->  | EX84: =ES84 -> 
AA85: Grid | AB85: 0.64512 | AC85: =BR85 ->  | AK85: =AE85 ->  | AN85: =BV85 ->  | AV85: =AP85 ->  | AY85: =BZ85 ->  | BG85: =BA85 ->  | BJ85: =AB85 -> 0.64512 | BM85: Grid | BN85: =D51*BN93 -> 0.64512 | BR85: =F51*BR93 ->  | BV85: =H51*BV93 ->  | BZ85: =J51*BZ93 ->  | CH85: Grid | CI85: =D20 -> 849936.6401 | CM85: =CI85 -> 849936.6401 | CQ85: =F20 -> 0 | CV85: =CQ85 -> 0 | CZ85: =H20 ->  | DD85: =CZ85 ->  | DH85: =J20 ->  | DL85: =DH85 ->  | DS85: Grid | DT85: 0.64512 | DX85: =DT85 -> 0.64512 | EB85: 0 | EG85: =EB85 -> 0 | EO85: =EK85 ->  | EW85: =ES85 -> 
B86: CAPEX ($/C-Plane) - incl G.Margin | F86: =F42*$F$84 ->  | AA86: Mooring | AB86: 0.4608 | AC86: =BR86 ->  | AJ86: =AE86 ->  | AN86: =BV86 ->  | AU86: =AP86 ->  | AY86: =BZ86 ->  | BF86: =BA86 ->  | BJ86: 0.4608 | BM86: Mooring | BN86: =D49*BN93 -> 0.4608 | BR86: =F49*BR93 ->  | BV86: =H49*BV93 ->  | BZ86: =J49*BZ93 ->  | CH86: Mooring | CI86: =D18 -> 607097.6001 | CL86: =CI86 -> 607097.6001 | CQ86: =F18 -> 0 | CU86: =CQ86 -> 0 | CZ86: =H18 ->  | DC86: =CZ86 ->  | DH86: =J18 ->  | DK86: =DH86 ->  | DS86: Mooring | DT86: 0.4608 | DW86: =DT86 -> 0.4608 | EB86: 0 | EF86: =EB86 -> 0 | EN86: =EK86 ->  | EV86: =ES86 -> 
B87: Platform | F87: =F43*$F$84 ->  | AA87: Drivetrain | AB87: 1.3824 | AC87: =BR87 ->  | AI87: =AE87 ->  | AN87: =BV87 ->  | AT87: =AP87 ->  | AY87: =BZ87 ->  | BE87: =BA87 ->  | BJ87: 1.3824 | BM87: Drivetrain | BN87: =D45*BN93 -> 1.3824 | BR87: =F45*BR93 ->  | BV87: =H45*BV93 ->  | BZ87: =J45*BZ93 ->  | CH87: Drivetrain | CI87: =D14 -> 1821292.8 | CK87: =CI87 -> 1821292.8 | CQ87: =F14 -> 0 | CT87: =CQ87 -> 0 | CZ87: =H14 ->  | DB87: =CZ87 ->  | DH87: =J14 ->  | DJ87: =DH87 ->  | DS87: Drivetrain | DT87: 1.3824 | DV87: =DT87 -> 1.3824 | EB87: 0 | EE87: =EB87 -> 0 | EM87: =EK87 ->  | EU87: =ES87 -> 
B88: Drivetrain | F88: =F45*$F$84 ->  | AA88: Platform | AB88: 1.8432 | AC88: =BR88 ->  | AH88: =AE88 ->  | AN88: =BV88 ->  | AS88: =AP88 ->  | AY88: =BZ88 ->  | BD88: =BA88 ->  | BJ88: 1.8432 | BM88: Platform | BN88: =D43*BN93 -> 1.8432 | BR88: =F43*BR93 ->  | BV88: =H43*BV93 ->  | BZ88: =J43*BZ93 ->  | CH88: Platform | CI88: =D12 -> 2428390.4 | CJ88: =CI88 -> 2428390.4 | CQ88: =F12 -> 0 | CS88: =CQ88 -> 0 | CZ88: =H12 ->  | DA88: =CZ88 ->  | DH88: =J12 ->  | DI88: =DH88 ->  | DS88: Platform | DT88: 1.8432 | DU88: =DT88 -> 1.8432 | EB88: 0 | ED88: =EB88 -> 0 | EL88: =EK88 ->  | ET88: =ES88 -> 
B89: Assembly cost | F89: =F47*$F$84 ->  | AA89: =BM89 -> Gross Margin | AB89: =BO89 -> 1.792 | AC89: =BS89 ->  | AG89: =AE89 ->  | AN89: =BW89 ->  | AR89: =AP89 ->  | AY89: =CA89 ->  | BC89: =BA89 ->  | BJ89: 1.792 | BM89: Gross Margin | BO89: =D55*BN93 -> 1.792 | BS89: =F55*BR93 ->  | BW89: =H55*BV93 ->  | CA89: =J55*BZ93 ->  | CH89: Gross Margin | CI89: =(SUM(CI84:CI88)/(1-CI95))-SUM(CI84:CI88) -> 2360935.111 | CO89: =CI89 -> 2360935.111 | CQ89: =CI89 -> 2360935.111 | CX89: =CO89 -> 2360935.111 | CZ89: =CI89 -> 2360935.111 | DF89: =CZ89 -> 2360935.111 | DH89: =CI89 -> 2360935.111 | DN89: =DH89 -> 2360935.111 | DS89: Gross Margin | DT89: 1.792 | DZ89: =DT89 -> 1.792 | EB89: 0.8981397154 | EI89: =EB89 -> 0.8981397154 | EK89: 1.202821969 | EQ89: =EK89 -> 1.202821969 | ES89: 1.545615502 | EY89: =ES89 -> 1.545615502
B90: Mooring Lines & Attachments | F90: =F49*$F$84 ->  | AA90: =BM90 -> OPEX | AB90: =BP90 -> 1.6 | AC90: =BT90 ->  | AF90: =AE90 ->  | AN90: =BX90 ->  | AQ90: =AP90 ->  | AY90: =CB90 ->  | BB90: =BA90 ->  | BJ90: 1.6 | BM90: OPEX | BP90: =D57*BN93 -> 1.6 | BT90: =F57*BR93 ->  | BX90: =H57*BV93 ->  | CB90: =J57*BZ93 ->  | CG90: Ghost values | CK90: =SUM(CJ84:CJ90) -> 2428390.4 | CL90: =SUM(CK84:CK90) -> 4249683.201 | CM90: =SUM(CL84:CL90) -> 4856780.801 | CN90: =SUM(CM84:CM90) -> 5706717.441 | CO90: =SUM(CN84:CN90) -> 6070976.001 | CT90: =SUM(CS84:CS90) -> 0 | CU90: =SUM(CT84:CT90) -> 0 | CV90: =SUM(CU84:CU90) -> 0 | CW90: =SUM(CV84:CV90) -> 0 | CX90: =SUM(CW84:CW90) -> 0 | DB90: =SUM(DA84:DA90) ->  | DC90: =SUM(DB84:DB90) ->  | DD90: =SUM(DC84:DC90) ->  | DE90: =SUM(DD84:DD90) ->  | DF90: =SUM(DE84:DE90) ->  | DJ90: =SUM(DI84:DI90) ->  | DK90: =SUM(DJ84:DJ90) ->  | DL90: =SUM(DK84:DK90) ->  | DM90: =SUM(DL84:DL90) ->  | DN90: =SUM(DM84:DM90) ->  | DR90: Ghost values | DV90: =SUM(DU84:DU90) -> 1.8432 | DW90: =SUM(DV84:DV90) -> 3.2256 | DX90: =SUM(DW84:DW90) -> 3.6864 | DY90: =SUM(DX84:DX90) -> 4.33152 | DZ90: =SUM(DY84:DY90) -> 4.608 | EE90: =SUM(ED84:ED90) -> 0 | EF90: =SUM(EE84:EE90) -> 0 | EG90: =SUM(EF84:EF90) -> 0 | EH90: =SUM(EG84:EG90) -> 0 | EI90: =SUM(EH84:EH90) -> 0 | EM90: =SUM(EL84:EL90) ->  | EN90: =SUM(EM84:EM90) ->  | EO90: =SUM(EN84:EN90) ->  | EP90: =SUM(EO84:EO90) ->  | EQ90: =SUM(EP84:EP90) ->  | EU90: =SUM(ET84:ET90) ->  | EV90: =SUM(EU84:EU90) ->  | EW90: =SUM(EV84:EV90) ->  | EX90: =SUM(EW84:EW90) ->  | EY90: =SUM(EX84:EX90) -> 
B91: Grid Connect | F91: =F51*$F$84 ->  | AA91: =BM91 -> AEP Improvement | AB91: 0 | AD91: =AC93*AD94 ->  | AM91: =AE91 ->  | AO91: =AN93*AO94 ->  | AX91: =AP91 ->  | AZ91: =AY93*AZ94 ->  | BI91: =BA91 ->  | BM91: AEP Improvement | BN91: 0 | BQ91: =BN93 -> 8 | BR91: 0 | BU91: =BR93 ->  | BV91: 0 | BY91: =BV93 ->  | BZ91: 0 | CC91: =BZ93 ->  | CH91: COE Total | CI91: =SUM(CI84:CI89) -> 8431911.112 | CP91: =CI91 -> 8431911.112 | CQ91: =SUM(CQ84:CQ89) -> 2360935.111 | CY91: =CQ91 -> 2360935.111 | CZ91: =SUM(CZ84:CZ89) ->  | DG91: =CZ91 ->  | DH91: =SUM(DH84:DH89) ->  | DO91: =DH91 ->  | DS91: COE Total | DT91: =SUM(DT84:DT89) -> 6.4 | EA91: =DT91 -> 6.4 | EB91: =SUM(EB84:EB89) -> 0.8981397154 | EJ91: =EB91 -> 0.8981397154 | EK91: =SUM(EK84:EK89) ->  | ER91: =EK91 ->  | ES91: =SUM(ES84:ES89) ->  | EZ91: =ES91 -> 
B92: Installation Cost | F92: =F53*$F$84 ->  | Z92: Ghost values --> | AF92: =AC93-SUM(AF84:AF91) ->  | AG92: =AF92-SUM(AG84:AG91) ->  | AQ92: =AN93-AQ84 ->  | AR92: =AQ92-SUM(AR84:AR90) ->  | AS92: =AR92-SUM(AS84:AS90) ->  | AT92: =AS92-SUM(AT84:AT90) ->  | AU92: =AT92-SUM(AU84:AU90) ->  | AV92: =AU92-SUM(AV84:AV91) ->  | AW92: =AV92-SUM(AW84:AW91) ->  | AX92: =AW92-SUM(AX84:AX91) ->  | BB92: =AY93-BB84 ->  | BC92: =BB92-SUM(BC84:BC90) ->  | BD92: =BC92-SUM(BD84:BD90) ->  | BE92: =BD92-SUM(BE84:BE90) ->  | BF92: =BE92-SUM(BF84:BF90) ->  | BG92: =BF92-SUM(BG84:BG91) ->  | BH92: =BG92-SUM(BH84:BH91) ->  | BI92: =BH92-SUM(BI84:BI91) ->  | BL92: Ghost values | BO92: =SUM(BN84:BN92) -> 4.608 | BP92: =SUM(BO84:BO92) -> 6.4 | BS92: =SUM(BR84:BR92) ->  | BT92: =SUM(BS84:BS92) ->  | BW92: =SUM(BV84:BV92) ->  | BX92: =SUM(BW84:BW92) ->  | CA92: =SUM(BZ84:BZ92) ->  | CB92: =SUM(CA84:CA92) ->  | CH92: NET AEP | CI92: =D28 -> 10539888.89 | CQ92: =F28 -> 21029557.62 | CZ92: =H28 -> 15702640.43 | DH92: =J28 -> 12220038.47 | DS92: NET AEP | DT92: =CI92 -> 10539888.89 | EB92: =CQ92 -> 21029557.62 | EK92: =CZ92 -> 15702640.43 | ES92: =DH92 -> 12220038.47
B93: Gross Margin | F93: =F55*$F$84 ->  | AA93: =BM93 -> COE Total | AB93: =BN93 -> 8 | AC93: =BR93 ->  | AD93: =SUM(AD84:AD91) ->  | AE93: =SUM(AE84:AE90) ->  | AN93: =SUM(AN84:AN90) ->  | AO93: =SUM(AO84:AO91) ->  | AP93: =SUM(AP84:AP90) ->  | AY93: =SUM(AY84:AY90) ->  | AZ93: =SUM(AZ84:AZ91) ->  | BA93: =SUM(BA84:BA90) ->  | BJ93: =SUM(BJ84:BJ92) -> 8 | BM93: COE Total | BN93: =D35 -> 8 | BR93: =F35 ->  | BV93: =H35 ->  | BZ93: =J35 ->  | CH93: AEP Correction Percent | CQ93: =($BN$94-CQ92)/$BN$94 -> -0.9952352282 | CZ93: =($BN$94-CZ92)/$BN$94 -> -0.4898297882 | DH93: =($BN$94-DH92)/$BN$94 -> -0.1594086612 | DS93: AEP Correction Percent | EB93: =($BN$94-EB92)/$BN$94 -> -0.9952352282 | EK93: =($BN$94-EK92)/$BN$94 -> -0.4898297882 | ES93: =($BN$94-ES92)/$BN$94 -> -0.1594086612
B94: OPEX ($/C-Plane/yr) | F94: =F57*$F$84 ->  | AA94: AEP Correction Percent | AD94: =BR95 -> -0.9952352282 | AO94: =BV95 -> -0.4898297882 | AZ94: =BZ95 -> -0.1594086612 | BM94: NET AEP | BN94: =D28 -> 10539888.89 | BR94: =F28 -> 21029557.62 | BV94: =H28 -> 15702640.43 | BZ94: =J28 -> 12220038.47
AA95: Percent decrease | AF95: =AF90/AD90 ->  | AG95: =AG89/AD89 ->  | AH95: =AH88/AD88 ->  | AI95: =AI87/AD87 ->  | AJ95: =AJ86/AD86 ->  | AK95: =AK85/AD85 ->  | AL95: =AL84/AD84 ->  | AM95: =AD94 -> -0.9952352282 | AQ95: =AQ90/AO90 ->  | AR95: =AR89/AO89 ->  | AS95: =AS88/AO88 ->  | AT95: =AT87/AO87 ->  | AU95: =AU86/AO86 ->  | AV95: =AV85/AO85 ->  | AW95: =AW84/AO84 ->  | AX95: =AO94 -> -0.4898297882 | BB95: =BB90/AZ90 ->  | BC95: =BC89/AZ89 ->  | BD95: =BD88/AZ88 ->  | BE95: =BE87/AZ87 ->  | BF95: =BF86/AZ86 ->  | BG95: =BG85/AZ85 ->  | BH95: =BH84/AZ84 ->  | BI95: =AZ94 -> -0.1594086612 | BM95: AEP Correction Percent | BR95: =($BN$94-BR94)/$BN$94 -> -0.9952352282 | BV95: =($BN$94-BV94)/$BN$94 -> -0.4898297882 | BZ95: =($BN$94-BZ94)/$BN$94 -> -0.1594086612 | CH95: Gross margin percent | CI95: =_B0_GrossMargin -> 0.28 | CQ95: =_B0_GrossMargin -> 0.28 | CZ95: =_C1_GrossMargin -> 0.28 | DH95: =_C2_GrossMargin -> 0.28 | DS95: Gross margin percent | DT95: =_B0_GrossMargin -> 0.28 | EB95: =_B0_GrossMargin -> 0.28 | EK95: =_C1_GrossMargin -> 0.28 | ES95: =_C2_GrossMargin -> 0.28
B96: Check: | F96: =SUM(F87:F93)+F94 -> 
DS97: AEP | DT97: =D28 -> 10539888.89 | EB97: =F28 -> 21029557.62 | EK97: =H28 -> 15702640.43 | ES97: =J28 -> 12220038.47
B99: Last Results | D99: Base Case | F99: P10 | H99: P50 | J99: P90
B100: Total COE | D100: Without correlation | F100: ='2.3 COE_History'!D64 -> 14.48816244 | H100: ='2.3 COE_History'!D65 -> 17.97459406 | J100: ='2.3 COE_History'!D66 -> 21.61464977
B102: CAPEX ($/C-Plane) - incl G.Margin | D102: Without correlation | F102: ='2.3 COE_History'!D68 -> 11.94383425 | H102: ='2.3 COE_History'!D69 -> 15.44344116 | J102: ='2.3 COE_History'!D70 -> 19.00929519
B103: Platform | F103: ='2.3 COE_History'!D72 -> 5.799958686 | H103: ='2.3 COE_History'!D73 -> 7.936311986 | J103: ='2.3 COE_History'!D74 -> 10.13680028
B104: Drivetrain | F104: ='2.3 COE_History'!D76 -> 1.482363595 | H104: ='2.3 COE_History'!D77 -> 2.089584518 | J104: ='2.3 COE_History'!D78 -> 2.85483287
B105: Assembly cost | F105: ='2.3 COE_History'!D92 -> 0.3456613939 | H105: ='2.3 COE_History'!D93 -> 0.4826607786 | J105: ='2.3 COE_History'!D94 -> 0.6092301443
B106: Mooring Lines & Attachments | F106: ='2.3 COE_History'!D80 -> 1.118135051 | H106: ='2.3 COE_History'!D81 -> 1.488935259 | J106: ='2.3 COE_History'!D82 -> 1.734006967
B107: Grid Connect | F107: ='2.3 COE_History'!D84 -> 0.6330391827 | H107: ='2.3 COE_History'!D85 -> 0.8797600441 | J107: ='2.3 COE_History'!D86 -> 1.109983439
B108: Installation Cost | F108: ='2.3 COE_History'!D88 -> 0.3501595911 | H108: ='2.3 COE_History'!D89 -> 0.4820240701 | J108: ='2.3 COE_History'!D90 -> 0.6166422102
B109: Gross Margin | F109: ='2.3 COE_History'!D100 -> 2.094198398 | H109: ='2.3 COE_History'!D101 -> 2.094198398 | J109: ='2.3 COE_History'!D102 -> 2.094198398
B110: OPEX ($/C-Plane/yr) | F110: ='2.3 COE_History'!D104 -> 2.502991374 | H110: ='2.3 COE_History'!D105 -> 2.55479462 | J110: ='2.3 COE_History'!D106 -> 2.627459822
B112: Check:

Sheet 2.2 HistoricGraphs (hidden)
AM1: Cost of Energy Model | BD1: Risked results
AM2: Aquantis | BD2: COE | BG2: Platform | BJ2: Grid | BM2: Drivetrain | BP2: Assembly and Installation | BS2: Mooring | BV2: OPEX
AM3: History of COE | BD3: P10 | BE3: P50 | BF3: P90 | BG3: P10 | BH3: P50 | BI3: P90 | BJ3: P10 | BK3: P50 | BL3: P90 | BM3: P10 | BN3: P50 | BO3: P90 | BP3: P10 | BQ3: P50 | BR3: P90 | BS3: P10 | BT3: P50 | BU3: P90 | BV3: P10 | BW3: P50 | BX3: P90
AM4: 2 | AN4: 1900-01-03 | AO4: 4 | AP4: 5 | AQ4: 6 | AR4: 10 | AS4: 11 | AT4: 12 | AU4: 13 | AV4: 14 | AW4: 15 | AX4: 16 | AY4: 17 | AZ4: 18 | BA4: 19 | BB4: 20 | BC4: 21 | BD4: 61 | BE4: 62 | BF4: 63 | BG4: 69 | BH4: 70 | BI4: 71 | BJ4: 81 | BK4: 82 | BL4: 83 | BM4: 73 | BN4: 74 | BO4: 75 | BP4: 93 | BQ4: 94 | BR4: 95 | BS4: 77 | BT4: 78 | BU4: 79 | BV4: 101 | BW4: 102 | BX4: 103
AM5: Configuration name | AN5: Date: | AO5: Time: | AP5: OK for historicic graph | AR5: COE Total | AS5: Capex Total | AT5: Platform | AU5: Drivetrain | AV5: Mooring | AW5: Grid | AX5: Assembly and Installation | AY5: Gross Margin | AZ5: OPEX Total | BA5: O&M | BB5: Lease cost | BC5: Liquidated damages | BD5: COE P10 | BE5: COE P50 | BF5: COE P90 | BG5: Platform P10 | BH5: Platform P50 | BI5: Platform P90 | BJ5: Grid P10 | BK5: Grid P50 | BL5: Grid P90 | BM5: Drivetrain P10 | BN5: Drivetrain P50 | BO5: Drivetrain P90 | BP5: P10 | BQ5: P50 | BR5: P90 | BS5: Mooring P10 | BT5: Mooring P50 | BU5: Mooring P90 | BV5: OPEX P10 | BW5: OPEX P50 | BX5: OPEX P90
AL6: 1 | AM6: =HLOOKUP($AL6,COE_History,AM$4,0) -> TARGET | AN6: 2011-04-01 | AO6: 40784.68437 | AP6: TRUE | AQ6: =HLOOKUP($AL6,COE_History,AQ$4,0) -> 0 | AR6: 10 | AS6: 7.5 | AT6: 2.34375 | AU6: 0.87890625 | AV6: 1.171875 | AW6: 1.171875 | AX6: 0.29296875 | AY6: 1.640625 | AZ6: 2.5 | BA6: 0 | BB6: 0 | BC6: 0 | BD6: 0 | BE6: 0 | BF6: 0 | BG6: 0 | BH6: 0 | BI6: 0 | BJ6: 0 | BK6: 0 | BL6: 0 | BM6: 0 | BN6: 0 | BO6: 0 | BP6: 0 | BQ6: 0 | BR6: 0 | BS6: 0 | BT6: 0 | BU6: 0 | BV6: 0 | BW6: 0 | BX6: 0
AL7: 2 | AM7: Conf 2 | AN7: 2011-08-16 | AO7: 40771.4281 | AP7: FALSE | AQ7: TRUE | AR7: 17.22766828 | AS7: 14.77628241 | AT7: 5.802439361 | AU7: 2.008983351 | AV7: 1.475662509 | AW7: 1.573400633 | AX7: 0.683484777 | AY7: 3.232311777 | AZ7: 2.451385872 | BA7: 0 | BB7: 0 | BC7: 0 | BD7: 0 | BE7: 0 | BF7: 0 | BG7: 0 | BH7: 0 | BI7: 0 | BJ7: 0 | BK7: 0 | BL7: 0 | BM7: 0 | BN7: 0 | BO7: 0 | BP7: 0 | BQ7: 0 | BR7: 0 | BS7: 0 | BT7: 0 | BU7: 0 | BV7: 0 | BW7: 0 | BX7: 0
AL8: 3 | AM8: Conf 1 | AN8: 2011-08-16 | AO8: 40771.42811 | AP8: FALSE | AQ8: TRUE | AR8: 17.328288 | AS8: 14.86258459 | AT8: 5.836329021 | AU8: 2.020716996 | AV8: 1.484281246 | AW8: 1.582590219 | AX8: 0.6874767303 | AY8: 3.25119038 | AZ8: 2.465703408 | BA8: 0 | BB8: 0 | BC8: 0 | BD8: 0 | BE8: 0 | BF8: 0 | BG8: 0 | BH8: 0 | BI8: 0 | BJ8: 0 | BK8: 0 | BL8: 0 | BM8: 0 | BN8: 0 | BO8: 0 | BP8: 0 | BQ8: 0 | BR8: 0 | BS8: 0 | BT8: 0 | BU8: 0 | BV8: 0 | BW8: 0 | BX8: 0
AL9: 4 | AM9: Conf 2 | AN9: 2011-08-16 | AO9: 40771.42858 | AP9: FALSE | AQ9: TRUE | AR9: 18.95918569 | AS9: 16.26141608 | AT9: 6.385630576 | AU9: 2.210902125 | AV9: 1.623978305 | AW9: 1.731539886 | AX9: 0.7521804225 | AY9: 3.557184768 | AZ9: 2.697769611 | BA9: 0 | BB9: 0 | BC9: 0 | BD9: 0 | BE9: 0 | BF9: 0 | BG9: 0 | BH9: 0 | BI9: 0 | BJ9: 0 | BK9: 0 | BL9: 0 | BM9: 0 | BN9: 0 | BO9: 0 | BP9: 0 | BQ9: 0 | BR9: 0 | BS9: 0 | BT9: 0 | BU9: 0 | BV9: 0 | BW9: 0 | BX9: 0
AL10: 5 | AM10: Conf 1 | AN10: 2011-08-16 | AO10: 40771.42904 | AP10: FALSE | AQ10: TRUE | AR10: 25.90198622 | AS10: 22.0097168 | AT10: 9.0802165 | AU10: 3.143850825 | AV10: 1.892839261 | AW10: 1.894006919 | AX10: 1.184177747 | AY10: 4.814625551 | AZ10: 3.892269412 | BA10: 0 | BB10: 0 | BC10: 0 | BD10: 0 | BE10: 0 | BF10: 0 | BG10: 0 | BH10: 0 | BI10: 0 | BJ10: =HLOOKUP($AL10,COE_History,BJ$4,0) -> 0 | BK10: 0 | BL10: 0 | BM10: 0 | BN10: 0 | BO10: 0 | BP10: 0 | BQ10: 0 | BR10: 0 | BS10: 0 | BT10: 0 | BU10: 0 | BV10: 0 | BW10: 0 | BX10: 0
AL11: 6 | AM11: Conf 2 | AN11: 2011-08-16 | AO11: 40771.42905 | AP11: FALSE | AQ11: TRUE | AR11: 21.61009144 | AS11: 17.71782203 | AT11: 7.309574282 | AU11: 2.530799914 | AV11: 1.523735605 | AW11: 1.52467557 | AX11: 0.9532630863 | AY11: 3.875773568 | AZ11: 3.892269412 | BA11: 0 | BB11: 0 | BC11: 0 | BD11: =HLOOKUP($AL11,COE_History,BD$4,0) -> 0 | BE11: 0 | BF11: 0 | BG11: 0 | BH11: 0 | BI11: 0 | BJ11: 0 | BK11: 0 | BL11: 0 | BM11: 0 | BN11: 0 | BO11: 0 | BP11: 0 | BQ11: 0 | BR11: 0 | BS11: 0 | BT11: 0 | BU11: 0 | BV11: 0 | BW11: 0 | BX11: 0
AL12: 7 | AM12: Conf 2 | AN12: 2011-08-16 | AO12: 40771.42981 | AP12: FALSE | AQ12: TRUE | AR12: 25.36792464 | AS12: 21.55590821 | AT12: 8.892995541 | AU12: 3.079029159 | AV12: 1.853811648 | AW12: 1.85495523 | AX12: 1.159761711 | AY12: 4.715354921 | AZ12: 3.812016435 | BA12: 0 | BB12: 0 | BC12: 0 | BD12: 0 | BE12: 0 | BF12: 0 | BG12: 0 | BH12: 0 | BI12: 0 | BJ12: 0 | BK12: 0 | BL12: 0 | BM12: 0 | BN12: 0 | BO12: 0 | BP12: 0 | BQ12: 0 | BR12: 0 | BS12: 0 | BT12: 0 | BU12: 0 | BV12: 0 | BW12: 0 | BX12: 0
AL13: 8 | AM13: Conf 2 | AN13: 2011-08-16 | AO13: 40771.43297 | AP13: FALSE | AQ13: TRUE | AR13: 20.92217942 | AS13: 17.77822134 | AT13: 7.334492314 | AU13: 2.539427305 | AV13: 1.528929956 | AW13: 1.529873125 | AX13: 0.9565127201 | AY13: 3.888985918 | AZ13: 3.143958086 | BA13: 0 | BB13: 0 | BC13: 0 | BD13: 0 | BE13: 0 | BF13: 0 | BG13: 0 | BH13: 0 | BI13: 0 | BJ13: 0 | BK13: 0 | BL13: 0 | BM13: 0 | BN13: 0 | BO13: 0 | BP13: 0 | BQ13: 0 | BR13: 0 | BS13: 0 | BT13: 0 | BU13: 0 | BV13: 0 | BW13: 0 | BX13: 0
AL14: 9 | AM14: Conf 1 | AN14: 2011-08-10 | AO14: 40784.63135 | AP14: TRUE | AQ14: =HLOOKUP($AL14,COE_History,AQ$4,0) -> Old 800 kW rotor curve. | AR14: 25.87979297 | AS14: 21.98752356 | AT14: 9.0802165 | AU14: 3.143850825 | AV14: 1.892839261 | AW14: 1.894006919 | AX14: 1.166839273 | AY14: 4.809770778 | AZ14: 3.892269412 | BA14: 0 | BB14: 0 | BC14: 0 | BD14: 0 | BE14: 0 | BF14: 0 | BG14: 0 | BH14: 0 | BI14: 0 | BJ14: 0 | BK14: 0 | BL14: 0 | BM14: 0 | BN14: 0 | BO14: 0 | BP14: 0 | BQ14: 0 | BR14: 0 | BS14: 0 | BT14: 0 | BU14: 0 | BV14: 0 | BW14: 0 | BX14: 0
AL15: 10 | AM15: Conf 1 | AN15: 2011-08-15 | AO15: 40784.63202 | AP15: TRUE | AQ15: =HLOOKUP($AL15,COE_History,AQ$4,0) -> August 11th power curve. | AR15: 20.90425296 | AS15: 17.76029487 | AT15: 7.334492314 | AU15: 2.539427305 | AV15: 1.528929956 | AW15: 1.529873125 | AX15: 0.9425076681 | AY15: 3.885064503 | AZ15: 3.143958086 | BA15: 0 | BB15: 0 | BC15: 0 | BD15: 0 | BE15: 0 | BF15: 0 | BG15: 0 | BH15: 0 | BI15: 0 | BJ15: 0 | BK15: 0 | BL15: 0 | BM15: 0 | BN15: 0 | BO15: 0 | BP15: 0 | BQ15: 0 | BR15: 0 | BS15: 0 | BT15: 0 | BU15: 0 | BV15: 0 | BW15: 0 | BX15: 0
AL16: 11 | AM16: =HLOOKUP($AL16,COE_History,AM$4,0) -> Base | AN16: 2011-08-29 | AO16: 40784.7119 | AP16: FALSE | AQ16: TRUE | AR16: 19.32030933 | AS16: 16.17635125 | AT16: 5.395689272 | AU16: 3.299700865 | AV16: 1.528929956 | AW16: 1.529873125 | AX16: 0.8835811941 | AY16: 3.538576836 | AZ16: 3.143958086 | BA16: 0 | BB16: 0 | BC16: 0 | BD16: 0 | BE16: 0 | BF16: 0 | BG16: 0 | BH16: 0 | BI16: 0 | BJ16: 0 | BK16: 0 | BL16: 0 | BM16: 0 | BN16: 0 | BO16: 0 | BP16: 0 | BQ16: 0 | BR16: 0 | BS16: 0 | BT16: 0 | BU16: 0 | BV16: 0 | BW16: 0 | BX16: 0
AL17: 12 | AM17: Conf 1 | AN17: 2011-08-30 | AO17: 40785.34547 | AP17: TRUE | AQ17: =HLOOKUP($AL17,COE_History,AQ$4,0) -> New cost data. Using values specific for 800 kW instead of a 0.8 factor. | AR17: 19.3724708 | AS17: 16.22851271 | AT17: 5.395689272 | AU17: 3.338511476 | AV17: 1.528929956 | AW17: 1.529873125 | AX17: 0.8855217246 | AY17: 3.549987155 | AZ17: 3.143958086 | BA17: 0 | BB17: 0 | BC17: 0 | BD17: 0 | BE17: 0 | BF17: 0 | BG17: 0 | BH17: 0 | BI17: 0 | BJ17: 0 | BK17: 0 | BL17: 0 | BM17: 0 | BN17: 0 | BO17: 0 | BP17: 0 | BQ17: 0 | BR17: 0 | BS17: 0 | BT17: 0 | BU17: 0 | BV17: 0 | BW17: 0 | BX17: 0
AL18: 13 | AM18: Conf 1 | AN18: 2011-08-30 | AO18: 40785.36061 | AP18: FALSE | AQ18: TRUE | AR18: 16.01068781 | AS18: 12.86672973 | AT18: 3.669068705 | AU18: 2.563805421 | AV18: 1.528929956 | AW18: 1.529873125 | AX18: 0.7604553934 | AY18: 2.814597128 | AZ18: 3.143958086 | BA18: 0 | BB18: 0 | BC18: 0 | BD18: 0 | BE18: 0 | BF18: 0 | BG18: 0 | BH18: 0 | BI18: 0 | BJ18: 0 | BK18: 0 | BL18: 0 | BM18: 0 | BN18: 0 | BO18: 0 | BP18: 0 | BQ18: 0 | BR18: 0 | BS18: 0 | BT18: 0 | BU18: 0 | BV18: 0 | BW18: 0 | BX18: 0
AL19: 14 | AM19: Conf 1 | AN19: 2011-08-30 | AO19: 40785.3628 | AP19: FALSE | AQ19: TRUE | AR19: 15.20015285 | AS19: 12.05619476 | AT19: 3.237413563 | AU19: 2.392383952 | AV19: 1.528929956 | AW19: 1.529873125 | AX19: 0.7303015629 | AY19: 2.637292605 | AZ19: 3.143958086 | BA19: 0 | BB19: 0 | BC19: 0 | BD19: 0 | BE19: 0 | BF19: 0 | BG19: 0 | BH19: 0 | BI19: 0 | BJ19: 0 | BK19: 0 | BL19: 0 | BM19: 0 | BN19: 0 | BO19: 0 | BP19: 0 | BQ19: 0 | BR19: 0 | BS19: 0 | BT19: 0 | BU19: 0 | BV19: 0 | BW19: 0 | BX19: 0
AL20: 15 | AM20: Conf 1 | AN20: 2011-08-30 | AO20: 40785.38232 | AP20: FALSE | AR20: 14.83984581 | AS20: 11.69588772 | AT20: 3.237413563 | AU20: 2.392383952 | AV20: 1.528929956 | AW20: 1.529873125 | AX20: 0.4488116872 | AY20: 2.558475439 | AZ20: 3.143958086 | BA20: 0 | BB20: 0 | BC20: 0 | BD20: 0 | BE20: 0 | BF20: 0 | BG20: 0 | BH20: 0 | BI20: =HLOOKUP($AL20,COE_History,BI$4,0) -> 0 | BJ20: 0 | BK20: 0 | BL20: 0 | BM20: 0 | BN20: 0 | BO20: 0 | BP20: 0 | BQ20: 0 | BR20: 0 | BS20: 0 | BT20: 0 | BU20: 0 | BV20: 0 | BW20: 0 | BX20: 0
AL21: 16 | AM21: Conf 1 | AN21: 2011-08-30 | AO21: 40785.38771 | AP21: FALSE | AR21: 13.37785984 | AS21: 10.23390176 | AT21: 3.237413563 | AU21: 2.392383952 | AV21: 1.528929956 | AW21: 1.529873125 | AX21: 0.4488116872 | AY21: 1.096489474 | AZ21: 3.143958086 | BA21: 0 | BB21: 0 | BC21: 0 | BD21: 0 | BE21: 0 | BF21: 0 | BG21: 0 | BH21: 0 | BI21: 0 | BJ21: 0 | BK21: 0 | BL21: 0 | BM21: 0 | BN21: 0 | BO21: 0 | BP21: 0 | BQ21: 0 | BR21: 0 | BS21: 0 | BT21: 0 | BU21: 0 | BV21: 0 | BW21: 0 | BX21: 0
AL22: 17 | AM22: Base | AN22: 2011-09-02 | AO22: 40788.3824 | AP22: TRUE | AQ22: =HLOOKUP($AL22,COE_History,AQ$4,0) -> Using current speed at 70m, instead of at 50m. | AR22: 21.05678953 | AS22: 17.63948337 | AT22: 5.8648117 | AU22: 3.628774783 | AV22: 1.661861134 | AW22: 1.662886306 | AX22: 0.9625124629 | AY22: 3.858636988 | AZ22: 3.417306156 | BA22: 0 | BB22: 0 | BC22: 0 | BD22: 0 | BE22: 0 | BF22: 0 | BG22: 0 | BH22: 0 | BI22: 0 | BJ22: 0 | BK22: 0 | BL22: 0 | BM22: 0 | BN22: 0 | BO22: 0 | BP22: 0 | BQ22: 0 | BR22: 0 | BS22: 0 | BT22: 0 | BU22: 0 | BV22: 0 | BW22: 0 | BX22: 0
AL23: 18
AL24: 19 | AM24: Base | AN24: 2011-09-06 | AO24: 40792.62987 | AP24: TRUE | AQ24: =HLOOKUP($AL24,COE_History,AQ$4,0) -> Using updated OPEX values from the O&M model. | AR24: 22.97423774 | AS24: 17.63948337 | AT24: 5.8648117 | AU24: 3.628774783 | AV24: 1.661861134 | AW24: 1.662886306 | AX24: 0.9625124629 | AY24: 3.858636988 | AZ24: 5.334754368 | BA24: 0 | BB24: 0 | BC24: 0 | BD24: 0 | BE24: 0 | BF24: 0 | BG24: 0 | BH24: 0 | BI24: 0 | BJ24: 0 | BK24: 0 | BL24: 0 | BM24: 0 | BN24: 0 | BO24: 0 | BP24: 0 | BQ24: 0 | BR24: 0 | BS24: 0 | BT24: 0 | BU24: 0 | BV24: 0 | BW24: 0 | BX24: 0
AL25: 20
AL26: 21 | AM26: =HLOOKUP($AL26,COE_History,AM$4,0) -> Base | AN26: 2011-09-14 | AO26: 40800.42522 | AP26: TRUE | AQ26: =HLOOKUP($AL26,COE_History,AQ$4,0) -> Updated the gross margin calculation method (28% of final CAPEX, not adding 28% to the CAPEX cost). | AR26: 24.47481879 | AS26: 19.14006442 | AT26: 5.8648117 | AU26: 3.628774783 | AV26: 1.661861134 | AW26: 1.662886306 | AX26: 0.9625124629 | AY26: 5.359218039 | AZ26: 5.334754368 | BA26: 0 | BB26: 0 | BC26: 0 | BD26: 0 | BE26: 0 | BF26: 0 | BG26: 0 | BH26: 0 | BI26: 0 | BJ26: 0 | BK26: 0 | BL26: 0 | BM26: 0 | BN26: 0 | BO26: 0 | BP26: 0 | BQ26: 0 | BR26: 0 | BS26: 0 | BT26: 0 | BU26: 0 | BV26: 0 | BW26: 0 | BX26: 0
AL27: 22 | AM27: Base | AN27: 2011-09-19 | AO27: 40805.54895 | AP27: TRUE | AQ27: =HLOOKUP($AL27,COE_History,AQ$4,0) -> Using updated weights and cost sheet from Michael LaGrassa (Sept14). Lower costs on platform and drivetrain. | AR27: 21.90519335 | AS27: 16.57043898 | AT27: 5.721540625 | AU27: 2.010016985 | AV27: 1.661861134 | AW27: 1.662886306 | AX27: 0.8744110193 | AY27: 4.639722916 | AZ27: 5.334754368 | BA27: 0 | BB27: 0 | BC27: 0 | BD27: 0 | BE27: 0 | BF27: 0 | BG27: 0 | BH27: 0 | BI27: 0 | BJ27: 0 | BK27: 0 | BL27: 0 | BM27: 0 | BN27: 0 | BO27: 0 | BP27: 0 | BQ27: 0 | BR27: 0 | BS27: 0 | BT27: 0 | BU27: 0 | BV27: 0 | BW27: 0 | BX27: 0
AL28: 23 | AM28: Base | AN28: 2011-09-20 | AO28: 40806.33183 | AP28: TRUE | AQ28: =HLOOKUP($AL28,COE_History,AQ$4,0) -> With new updated values (Sept 20). This includes better estimates on blades and rotor hub. | AR28: 25.36505083 | AS28: 20.03029646 | AT28: 7.969457901 | AU28: 2.134573406 | AV28: 1.661861134 | AW28: 1.662886306 | AX28: 0.9930347042 | AY28: 5.608483009 | AZ28: 5.334754368 | BA28: 0 | BB28: 0 | BC28: 0 | BD28: 0 | BE28: 0 | BF28: 0 | BG28: 0 | BH28: 0 | BI28: 0 | BJ28: 0 | BK28: 0 | BL28: 0 | BM28: 0 | BN28: 0 | BO28: 0 | BP28: 0 | BQ28: 0 | BR28: 0 | BS28: 0 | BT28: 0 | BU28: 0 | BV28: 0 | BW28: 0 | BX28: 0
AL29: 24 | AM29: Base | AN29: 2011-09-20 | AO29: 40806.35391 | AP29: TRUE | AQ29: =HLOOKUP($AL29,COE_History,AQ$4,0) -> New O&M data September 20th.. | AR29: 24.33214804 | AS29: 20.03029646 | AT29: 7.969457901 | AU29: 2.134573406 | AV29: 1.661861134 | AW29: 1.662886306 | AX29: 0.9930347042 | AY29: 5.608483009 | AZ29: 4.301851576 | BA29: 0 | BB29: 0 | BC29: 0 | BD29: 0 | BE29: 0 | BF29: 0 | BG29: 0 | BH29: 0 | BI29: 0 | BJ29: 0 | BK29: 0 | BL29: 0 | BM29: 0 | BN29: 0 | BO29: 0 | BP29: 0 | BQ29: 0 | BR29: 0 | BS29: 0 | BT29: 0 | BU29: 0 | BV29: 0 | BW29: 0 | BX29: 0
AL30: 25 | AM30: Base | AN30: 2011-09-25 | AO30: 40811.8138 | AP30: TRUE | AQ30: =HLOOKUP($AL30,COE_History,AQ$4,0) -> Fixed the Gross Margin. Now the margin is based on the target cost instead of the actual cost. Added uncertainty into the graph. | AR30: 20.83586012 | AS30: 16.53400855 | AT30: 7.969457901 | AU30: 2.134573406 | AV30: 1.661861134 | AW30: 1.662886306 | AX30: 0.9930347042 | AY30: 2.112195096 | AZ30: 4.301851576 | BA30: 0 | BB30: 0 | BC30: 0 | BD30: 19.9052197 | BE30: 20.89759857 | BF30: 21.58877431 | BG30: 7.398893486 | BH30: 7.986974131 | BI30: =HLOOKUP($AL30,COE_History,BI$4,0) -> 8.48506187 | BJ30: 1.539208881 | BK30: 1.699007119 | BL30: 1.844881829 | BM30: 1.95722934 | BN30: 2.150291736 | BO30: 2.273397075 | BP30: 0.8919847702 | BQ30: 0.9824137059 | BR30: 1.100595562 | BS30: 1.450042817 | BT30: 1.643915279 | BU30: 1.822001002 | BV30: 3.67105157 | BW30: 4.318157029 | BX30: 4.796811494
AL31: 26 | AM31: Base | AN31: 2011-09-25 | AO31: 40811.8388 | AP31: FALSE | AR31: 20.83586012 | AS31: 16.53400855 | AT31: 7.969457901 | AU31: 2.134573406 | AV31: 1.661861134 | AW31: 1.662886306 | AX31: 0.9930347042 | AY31: 2.112195096 | AZ31: 4.301851576 | BA31: 0 | BB31: 0 | BC31: 0 | BD31: 20.07200071 | BE31: 20.84910832 | BF31: 21.6546303 | BG31: 7.495299853 | BH31: 7.992091533 | BI31: 8.454432303 | BJ31: 1.480766816 | BK31: 1.659378909 | BL31: 1.851381101 | BM31: 1.983176449 | BN31: 2.140138154 | BO31: 2.284213808 | BP31: 0.8858051048 | BQ31: 0.9918559158 | BR31: 1.101398372 | BS31: 1.478507431 | BT31: 1.659447492 | BU31: 1.842277005 | BV31: 3.735526264 | BW31: 4.324078091 | BX31: 4.873473258
AL32: 27 | AM32: Base | AN32: 2011-09-25 | AO32: 40811.84199 | AP32: FALSE | AR32: 20.83586012 | AS32: 16.53400855 | AT32: 7.969457901 | AU32: 2.134573406 | AV32: 1.661861134 | AW32: 1.662886306 | AX32: 0.9930347042 | AY32: 2.112195096 | AZ32: 4.301851576 | BA32: 0 | BB32: 0 | BC32: 0 | BD32: 20.07200071 | BE32: 20.84910832 | BF32: 21.6546303 | BG32: 7.495299853 | BH32: 7.992091533 | BI32: 8.454432303 | BJ32: 1.480766816 | BK32: 1.659378909 | BL32: 1.851381101 | BM32: 1.983176449 | BN32: 2.140138154 | BO32: 2.284213808 | BP32: 0.8858051048 | BQ32: 0.9918559158 | BR32: 1.101398372 | BS32: 1.478507431 | BT32: 1.659447492 | BU32: 1.842277005 | BV32: 3.735526264 | BW32: 4.324078091 | BX32: 4.873473258
AL33: 28 | AM33: Base | AN33: 2011-09-25 | AO33: 40811.85867 | AP33: FALSE | AR33: 20.83586012 | AS33: 16.53400855 | AT33: 7.969457901 | AU33: 2.134573406 | AV33: 1.661861134 | AW33: 1.662886306 | AX33: 0.9930347042 | AY33: 2.112195096 | AZ33: 4.301851576 | BA33: 0 | BB33: 0 | BC33: 0 | BD33: 21.12389744 | BE33: 22.3067231 | BF33: 23.46853438 | BG33: 7.950280613 | BH33: 8.7225265 | BI33: 9.664293862 | BJ33: 1.520323151 | BK33: 1.786534105 | BL33: 2.169703795 | BM33: 2.086004852 | BN33: 2.335259862 | BO33: 2.637186258 | BP33: 0.9129742323 | BQ33: 1.073550712 | BR33: 1.299857705 | BS33: 1.509931197 | BT33: 1.80151067 | BU33: 2.20321613 | BV33: 3.729915122 | BW33: 4.330468173 | BX33: 4.934985331
AL34: 29 | AM34: Base | AN34: 2011-09-25 | AO34: 40811.88048 | AP34: FALSE | AR34: 20.83586012 | AS34: 16.53400855 | AT34: 7.969457901 | AU34: 2.134573406 | AV34: 1.661861134 | AW34: 1.662886306 | AX34: 0.9930347042 | AY34: 2.112195096 | AZ34: 4.301851576 | BA34: 0 | BB34: 0 | BC34: 0 | BD34: 21.15296195 | BE34: 22.24520136 | BF34: 23.45374365 | BG34: 7.888109629 | BH34: 8.718556643 | BI34: 9.72956762 | BJ34: 1.522453955 | BK34: 1.785967831 | BL34: 2.18852676 | BM34: 2.08602489 | BN34: 2.3330955 | BO34: 2.611696673 | BP34: 0.9059151419 | BQ34: 1.073821639 | BR34: 1.307039698 | BS34: 1.526959506 | BT34: 1.801782347 | BU34: 2.194419509 | BV34: 3.777799886 | BW34: 4.324657312 | BX34: 4.862132739
AL35: 30 | AM35: Base | AN35: 2011-09-25 | AO35: 40811.90091 | AP35: FALSE | AR35: 21.17407364 | AS35: 16.87222207 | AT35: 8.291566015 | AU35: 2.134573406 | AV35: 1.661861134 | AW35: 1.662886306 | AX35: 1.00914011 | AY35: 2.112195096 | AZ35: 4.301851576 | BA35: 0 | BB35: 0 | BC35: 0 | BD35: 21.15296195 | BE35: 22.24520136 | BF35: 23.45374365 | BG35: 7.888109629 | BH35: 8.718556643 | BI35: 9.72956762 | BJ35: 1.522453955 | BK35: 1.785967831 | BL35: 2.18852676 | BM35: 2.08602489 | BN35: 2.3330955 | BO35: 2.611696673 | BP35: 0.9059151419 | BQ35: 1.073821639 | BR35: 1.307039698 | BS35: 1.526959506 | BT35: 1.801782347 | BU35: 2.194419509 | BV35: 3.777799886 | BW35: 4.324657312 | BX35: 4.862132739
AL36: 31 | AM36: =HLOOKUP($AL36,COE_History,AM$4,0) -> Base | AN36: 2011-09-27 | AO36: 40813.39436 | AP36: FALSE | AR36: 21.26754079 | AS36: 16.94669987 | AT36: 8.328166861 | AU36: 2.143995895 | AV36: 1.669196965 | AW36: 1.670226662 | AX36: 1.013594682 | AY36: 2.121518802 | AZ36: 4.32084092 | BA36: 0 | BB36: 0 | BC36: 0 | BD36: 21.42482894 | BE36: 22.57244018 | BF36: 23.885635 | BG36: 8.244076585 | BH36: 9.028100849 | BI36: 10.06379822 | BJ36: 1.50807293 | BK36: 1.784804649 | BL36: 2.18181427 | BM36: 2.091082712 | BN36: 2.354211385 | BO36: 2.63365577 | BP36: 0.9333550431 | BQ36: 1.09135338 | BR36: 1.329458386 | BS36: 1.514101802 | BT36: 1.776578154 | BU36: 2.168689958 | BV36: 3.730706985 | BW36: 4.307420014 | BX36: 4.918615299
AL37: 32 | AM37: Base | AN37: 2011-09-30 | AO37: 40816.47121 | AP37: FALSE | AR37: 21.26754079 | AS37: 16.94669987 | AT37: 8.328166861 | AU37: 2.143995895 | AV37: 1.669196965 | AW37: 1.670226662 | AX37: 1.013594682 | AY37: 2.121518802 | AZ37: 4.32084092 | BA37: 0 | BB37: 0 | BC37: 0 | BD37: 21.57211892 | BE37: 22.76448988 | BF37: 24.06955635 | BG37: 8.288927121 | BH37: 9.164806641 | BI37: 10.16899672 | BJ37: 1.531710756 | BK37: 1.786085823 | BL37: 2.172388941 | BM37: 2.089176699 | BN37: 2.341684755 | BO37: 2.65480516 | BP37: 0.9301150936 | BQ37: 1.095329753 | BR37: 1.326524733 | BS37: 1.523667723 | BT37: 1.806323237 | BU37: 2.201588324 | BV37: 3.753112354 | BW37: 4.351863436 | BX37: 4.928178533
AL38: 33 | AM38: Base | AN38: 2011-09-30 | AO38: 40816.4732 | AP38: FALSE | AR38: 21.26754079 | AS38: 16.94669987 | AT38: 8.328166861 | AU38: 2.143995895 | AV38: 1.669196965 | AW38: 1.670226662 | AX38: 1.013594682 | AY38: 2.121518802 | AZ38: 4.32084092 | BA38: 0 | BB38: 0 | BC38: 0 | BD38: 19.71790064 | BE38: 21.28486898 | BF38: 22.89449155 | BG38: 7.050781346 | BH38: 8.301261849 | BI38: 9.648862167 | BJ38: 1.251548812 | BK38: 1.690108887 | BL38: 2.177286949 | BM38: 1.74712996 | BN38: 2.150168492 | BO38: 2.510097637 | BP38: 0.7228068056 | BQ38: 1.015751917 | BR38: 1.295868848 | BS38: 1.184149308 | BT38: 1.661240689 | BU38: 2.104881688 | BV38: 3.757640849 | BW38: 4.326423138 | BX38: 4.930047151
AL39: 34 | AM39: Base | AN39: 2011-09-30 | AO39: 40816.6142 | AP39: FALSE | AR39: 21.26754079 | AS39: 16.94669987 | AT39: 8.328166861 | AU39: 2.143995895 | AV39: 1.669196965 | AW39: 1.670226662 | AX39: 1.013594682 | AY39: 2.121518802 | AZ39: 4.32084092 | BA39: 0 | BB39: 0 | BC39: 0 | BD39: 19.70656125 | BE39: 21.35317117 | BF39: 22.85244304 | BG39: 7.084938326 | BH39: 8.344756464 | BI39: 9.621055051 | BJ39: 1.184030048 | BK39: 1.660863694 | BL39: 2.150292513 | BM39: 1.772855171 | BN39: 2.144687694 | BO39: 2.537078204 | BP39: 0.7443340941 | BQ39: 1.016485237 | BR39: 1.303441402 | BS39: 1.195414228 | BT39: 1.67606358 | BU39: 2.161563006 | BV39: 3.781140346 | BW39: 4.325064018 | BX39: 4.903069182
AL40: 35 | AM40: Base | AN40: 2011-09-30 | AO40: 40816.6192 | AP40: FALSE | AR40: 21.26754079 | AS40: 16.94669987 | AT40: 8.328166861 | AU40: 2.143995895 | AV40: 1.669196965 | AW40: 1.670226662 | AX40: 1.013594682 | AY40: 2.121518802 | AZ40: 4.32084092 | BA40: 0 | BB40: 0 | BC40: 0 | BD40: 18.6334902 | BE40: 21.27694326 | BF40: 23.98336633 | BG40: 6.271116542 | BH40: 8.344532725 | BI40: =HLOOKUP($AL40,COE_History,BI$4,0) -> 10.50258064 | BJ40: 1.240526091 | BK40: 1.664406732 | BL40: 2.13657641 | BM40: 1.634726533 | BN40: 2.13071304 | BO40: 2.677035193 | BP40: 0.7357524958 | BQ40: 1.020494492 | BR40: 1.294714147 | BS40: 1.207127315 | BT40: 1.677812002 | BU40: 2.137176555 | BV40: 3.777659205 | BW40: 4.332774733 | BX40: 4.921998781
AL41: 36 | AM41: Base | AN41: 2011-09-30 | AO41: 40816.62271 | AP41: TRUE | AQ41: =HLOOKUP($AL41,COE_History,AQ$4,0) -> Using 0.8 correlation between all major CAPEX elements. Using -50%/+50% as the uncertainty ranges for min and max. | AR41: 21.26754079 | AS41: 16.94669987 | AT41: 8.328166861 | AU41: 2.143995895 | AV41: 1.669196965 | AW41: 1.670226662 | AX41: 1.013594682 | AY41: 2.121518802 | AZ41: 4.32084092 | BA41: 0 | BB41: 0 | BC41: 0 | BD41: 18.59683222 | BE41: 21.25735438 | BF41: 24.16341789 | BG41: 6.305289127 | BH41: 8.381963968 | BI41: 10.64413869 | BJ41: 1.190038976 | BK41: 1.678512904 | BL41: 2.139504174 | BM41: 1.607891025 | BN41: 2.146936086 | BO41: 2.724346855 | BP41: 0.7363481368 | BQ41: 1.015232029 | BR41: 1.284942731 | BS41: 1.186810336 | BT41: 1.635219592 | BU41: 2.108776676 | BV41: 3.77655361 | BW41: 4.356442778 | BX41: 4.931244175
AL42: 37
AL43: 38 | AM43: Base | AN43: 2011-10-03 | AO43: 40819.96251 | AP43: TRUE | AQ43: =HLOOKUP($AL43,COE_History,AQ$4,0) -> Risked run. Updated the blade and hub costs based on cost data from LaGrassa/Koudela. | AR43: 21.16256865 | AS43: 16.84172773 | AT43: 8.228193394 | AU43: 2.143995895 | AV43: 1.669196965 | AW43: 1.670226662 | AX43: 1.008596009 | AY43: 2.121518802 | AZ43: 4.32084092 | BA43: 0 | BB43: 0 | BC43: 0 | BD43: 18.47813413 | BE43: 21.07405462 | BF43: 23.86117465 | BG43: 6.307697143 | BH43: 8.224936044 | BI43: 10.43492345 | BJ43: 1.199818522 | BK43: 1.665120116 | BL43: 2.120535003 | BM43: 1.500304223 | BN43: 2.010023126 | BO43: 2.548170669 | BP43: 0.7356944108 | BQ43: 1.003082331 | BR43: 1.290809144 | BS43: 1.190517569 | BT43: 1.673211056 | BU43: 2.130484215 | BV43: 3.787206666 | BW43: 4.327721708 | BX43: 4.894731558
AL44: 39 | AM44: Base | AN44: 2011-10-12 | AO44: 40828.3905 | AP44: FALSE | AR44: 19.4820695 | AS44: 15.21687132 | AT44: 7.819671573 | AU44: 1.618968524 | AV44: 1.079706313 | AW44: 1.648717889 | AX44: 0.9556086217 | AY44: 2.094198398 | AZ44: 4.265198181 | BA44: 0 | BB44: 0 | BC44: 0 | BD44: 16.3278075 | BE44: 19.98084514 | BF44: 23.51681589 | BG44: 5.897979465 | BH44: 8.119847667 | BI44: 10.18118676 | BJ44: 1.216827587 | BK44: 1.668411882 | BL44: 2.117649747 | BM44: 1.262833194 | BN44: 1.805766228 | BO44: 2.38093393 | BP44: 0.7017118193 | BQ44: 0.9666392874 | BR44: 1.226993876 | BS44: 0.7844754264 | BT44: 1.096244041 | BU44: 1.376966874 | BV44: 3.688917784 | BW44: 4.266647179 | BX44: 4.82760054
AL45: 40 | AM45: Base | AN45: 2011-10-12 | AO45: 40828.55151 | AP45: FALSE | AR45: 20.52244625 | AS45: 15.58368861 | AT45: 7.819671573 | AU45: 1.618968524 | AV45: 1.446523602 | AW45: 1.648717889 | AX45: 0.9556086217 | AY45: 2.094198398 | AZ45: 4.938757642 | BA45: 0 | BB45: 0 | BC45: 0 | BD45: 17.14058629 | BE45: 20.83818508 | BF45: 24.51590372 | BG45: 5.849968393 | BH45: 7.965022092 | BI45: 10.1417474 | BJ45: 1.183199167 | BK45: 1.640573969 | BL45: 2.092945597 | BM45: 1.255215509 | BN45: 1.756478902 | BO45: 2.349115975 | BP45: 0.683429742 | BQ45: 0.9514164038 | BR45: 1.215210436 | BS45: 1.032117709 | BT45: 1.434867821 | BU45: 1.850140139 | BV45: 4.256785708 | BW45: 4.932574553 | BX45: 5.603636168
AL46: 41 | AM46: =HLOOKUP($AL46,COE_History,AM$4,0) -> Base | AN46: 2011-10-12 | AO46: 40828.91324 | AP46: TRUE | AQ46: =HLOOKUP($AL46,COE_History,AQ$4,0) -> Updated cost values (CAPEX October 12, 2011), and updated OPEX assessment. Added on uncertainty distributions dependent on the certainty of the estimates. | AR46: 20.12477822 | AS46: 15.18602058 | AT46: 7.688734183 | AU46: 1.899043713 | AV46: 1.446523602 | AW46: 1.09445517 | AX46: 0.9630655116 | AY46: 2.094198398 | AZ46: 4.938757642 | BA46: 0 | BB46: 0 | BC46: 0 | BD46: 16.77367058 | BE46: 20.50347054 | BF46: 23.93394075 | BG46: 5.747388825 | BH46: 7.939928199 | BI46: 9.989757515 | BJ46: 0.7862323923 | BK46: 1.09616077 | BL46: 1.396450791 | BM46: 1.474529356 | BN46: 2.142508356 | BO46: 2.85466731 | BP46: 0.6968226191 | BQ46: 0.9713943488 | BR46: 1.229376032 | BS46: 0.9815208566 | BT46: 1.333855483 | BU46: 1.561040073 | BV46: 4.267685711 | BW46: 4.947491119 | BX46: 5.610059286
AL47: 42 | AM47: Base | AN47: 2011-10-14 | AO47: 40830.63011 | AP47: FALSE | AR47: 17.63386736 | AS47: 15.12745743 | AT47: 7.688734183 | AU47: 1.899043713 | AV47: 1.609553508 | AW47: 0.8728621188 | AX47: 0.9630655116 | AY47: 2.094198398 | AZ47: 2.506409925 | BA47: 0 | BB47: 0 | BC47: 0 | BD47: 14.40259889 | BE47: 18.00740656 | BF47: 21.67679956 | BG47: 5.759120067 | BH47: 7.902963993 | BI47: 10.08323512 | BJ47: 0.6367402527 | BK47: 0.8702025889 | BL47: 1.126458252 | BM47: 1.443660191 | BN47: 2.107773006 | BO47: 2.960193342 | BP47: 0.6930150098 | BQ47: 0.9642794188 | BR47: 1.232352241 | BS47: 1.100320147 | BT47: 1.480436779 | BU47: 1.733228628 | BV47: 2.501304466 | BW47: 2.553225459 | BX47: 2.636480448
AL48: 43 | AM48: Base | AN48: 2011-10-14 | AO48: 40830.65259 | AP48: TRUE | AR48: 17.67079735 | AS48: 15.16438742 | AT48: 7.740454419 | AU48: 1.882494896 | AV48: 1.609553508 | AW48: 0.8728621188 | AX48: 0.9648240826 | AY48: 2.094198398 | AZ48: 2.506409925 | BA48: 0 | BB48: 0 | BC48: 0 | BD48: 14.48816244 | BE48: 17.97459406 | BF48: 21.61464977 | BG48: 5.799958686 | BH48: 7.936311986 | BI48: 10.13680028 | BJ48: 0.6330391827 | BK48: 0.8797600441 | BL48: 1.109983439 | BM48: 1.482363595 | BN48: 2.089584518 | BO48: 2.85483287 | BP48: 0.695820985 | BQ48: 0.9646848488 | BR48: 1.225872354 | BS48: 1.118135051 | BT48: 1.488935259 | BU48: 1.734006967 | BV48: 2.502991374 | BW48: 2.55479462 | BX48: 2.627459822
AL49: 44
AL50: 45 | BI50: =HLOOKUP($AL50,COE_History,BI$4,0) -> 
AL51: 46
AL52: 47
AL53: 48
AL54: 49
AL55: 50
AL56: 51 | AM56: =HLOOKUP($AL56,COE_History,AM$4,0) -> 
AL57: 52
AL58: 53
AL59: 54
AL60: 55 | BI60: =HLOOKUP($AL60,COE_History,BI$4,0) -> 
AL61: 56
AL62: 57
AL63: 58
AL64: 59
AL65: 60
AL66: 61 | AM66: =HLOOKUP($AL66,COE_History,AM$4,0) -> 
AL67: 62
AL68: 63
AL69: 64
AL70: 65 | BI70: =HLOOKUP($AL70,COE_History,BI$4,0) -> 
AL71: 66
AL72: 67
AL73: 68
AL74: 69
AL75: 70
AL76: 71 | AM76: =HLOOKUP($AL76,COE_History,AM$4,0) -> 
AL77: 72
AL78: 73
AL79: 74
AL80: 75 | BI80: =HLOOKUP($AL80,COE_History,BI$4,0) -> 
AL81: 76
AL82: 77
AL83: 78
AL84: 79
AL85: 80
AL86: 81 | AM86: =HLOOKUP($AL86,COE_History,AM$4,0) -> 
AL87: 82
AL88: 83
AL89: 84
AL90: 85 | BI90: =HLOOKUP($AL90,COE_History,BI$4,0) -> 
AL91: 86
AL92: 87
AL93: 88
AL94: 89
AL95: 90
AL96: 91 | AM96: =HLOOKUP($AL96,COE_History,AM$4,0) -> 
AL97: 92
AL98: 93
AL99: 94
AL100: 95 | BI100: =HLOOKUP($AL100,COE_History,BI$4,0) -> 
AL101: 96
AL102: 97
AL103: 98
AL104: 99
AL105: 100
AL106: 101 | AM106: =HLOOKUP($AL106,COE_History,AM$4,0) -> 
AL107: 102
AL108: 103
AL109: 104
AL110: 105 | BI110: =HLOOKUP($AL110,COE_History,BI$4,0) -> 
AL111: 106
AL112: 107
AL113: 108
AL114: 109
AL115: 110
AL116: 111 | AM116: =HLOOKUP($AL116,COE_History,AM$4,0) -> 
AL117: 112
AL118: 113
AL119: 114
AL120: 115
AL121: 116
AL122: 117 | BT122: =HLOOKUP($AL122,COE_History,BT$4,0) ->  | BU122: =HLOOKUP($AL122,COE_History,BU$4,0) ->  | BV122: =HLOOKUP($AL122,COE_History,BV$4,0) ->  | BW122: =HLOOKUP($AL122,COE_History,BW$4,0) -> 
AM124: [Last Colum]
AL136: 1 | AN136: 1 | AO136: TARGET | AR136: 40784.68437 | AS136: TRUE | AT136: 1 | AU136: 2011-04-01
AL137: 9 | AN137: 9 | AO137: Conf 1 | AR137: 40784.63135 | AS137: TRUE | AT137: 2 | AU137: 2011-08-10 | AW137: Old 800 kW rotor curve.
AL138: 10 | AN138: 10 | AO138: Conf 1 | AR138: 40784.63202 | AS138: TRUE | AT138: 3 | AU138: 2011-08-15 | AW138: August 11th power curve.
AL139: 12 | AN139: 12 | AO139: Conf 1 | AR139: 40785.34547 | AS139: TRUE | AT139: 4 | AU139: 2011-08-30 | AW139: New cost data. Using values specific for 800 kW instead of a 0.8 factor.
AL140: 17 | AN140: 17 | AO140: Base | AR140: 40788.3824 | AS140: TRUE | AT140: 5 | AU140: 2011-09-02 | AW140: Using current speed at 70m, instead of at 50m.
AL141: 19 | AN141: 19 | AO141: Base | AR141: 40792.62987 | AS141: TRUE | AT141: 6 | AU141: 2011-09-06 | AW141: Using updated OPEX values from the O&M model.
AL142: 21 | AN142: 21 | AO142: Base | AR142: 40800.42522 | AS142: TRUE | AT142: 7 | AU142: 2011-09-14 | AW142: Updated the gross margin calculation method (28% of final CAPEX, not adding 28% to the CAPEX cost).
AL143: 22 | AN143: 22 | AO143: Base | AR143: 40805.54895 | AS143: TRUE | AT143: 8 | AU143: 2011-09-19 | AW143: Using updated weights and cost sheet from Michael LaGrassa (Sept14). Lower costs on platform and drivetrain.
AL144: 23 | AN144: 23 | AO144: Base | AR144: 40806.33183 | AS144: TRUE | AT144: 9 | AU144: 2011-09-20 | AW144: With new updated values (Sept 20). This includes better estimates on blades and rotor hub.
AL145: 24 | AN145: 24 | AO145: Base | AR145: 40806.35391 | AS145: TRUE | AT145: 10 | AU145: 2011-09-20 | AW145: New O&M data September 20th..
AL146: 25 | AN146: 25 | AO146: Base | AR146: 40811.8138 | AS146: TRUE | AT146: 11 | AU146: 2011-09-25 | AW146: Fixed the Gross Margin. Now the margin is based on the target cost instead of the actual cost.
AL147: 26 | AN147: 26 | AO147: Base | AR147: 40811.8388 | AS147: TRUE | AT147: 12 | AU147: 2011-09-25 | AW147: Added uncertainty estimations on the cost data.
AL148: 30 | AN148: 30 | AO148: Base | AR148: 40811.90091 | AS148: TRUE | AT148: 13 | AU148: 2011-09-25 | AW148: Improved the uncertainty estimation. Still need to adjust the distribution from Min to P10.
AL150: 0 | AN150: 29 | AO150: Base | AP150: 2011-09-25 | AR150: 40811.88048 | AS150: FALSE
AL151: Old 800 kW rotor curve. | AN151: 28 | AO151: Base | AP151: 2011-09-25 | AR151: 40811.85867 | AS151: FALSE
AL152: August 11th power curve. | AN152: 27 | AO152: Base | AP152: 2011-09-25 | AR152: 40811.84199 | AS152: FALSE
AL153: New cost data. Using values specific for 800 kW instead of a 0.8 factor.
AL154: Using current speed at 70m, instead of at 50m.
AL155: Using updated OPEX values from the O&M model.
AL156: Updated the gross margin calculation method (28% of final CAPEX, not adding 28% to the CAPEX cost).
AL157: Using updated weights and cost sheet from Michael LaGrassa (Sept14). Lower costs on platform and drivetrain.
AL158: With new updated values (Sept 20). This includes better estimates on blades and rotor hub.
AL159: New O&M data September 20th..
AL160: Fixed the Gross Margin. Now the margin is based on the target cost instead of the actual cost. Added uncertainty into the graph.
AL161: Using 0.8 correlation between all major CAPEX elements. Using -50%/+50% as the uncertainty ranges for min and max. | AN161: 16 | AO161: Conf 1 | AP161: 40785 | AR161: 40785.38771 | AS161: FALSE | AT161: CASE - 1.5 machining factor, 0% assembly, 12% gross margin
AL162: Risked run. Updated the blade and hub costs based on cost data from LaGrassa/Koudela. | AN162: 15 | AO162: Conf 1 | AP162: 40785 | AR162: 40785.38232 | AS162: FALSE | AT162: CASE - 1.5 machining factor, 0% assembly. Same as 1.5 machining factor, and also removed the assembly percentage.
AL163: Updated cost values (CAPEX October 12, 2011), and updated OPEX assessment. Added on uncertainty distributions dependent on the certainty of the estimates. | AN163: 14 | AO163: Conf 1 | AP163: 40785 | AR163: 40785.3628 | AS163: FALSE | AT163: CASE - 1.5 machining factor. Keeping all else constant, but decreasing machining factors. 1.5 and 1.0 (drivetrain)
AN164: 13 | AO164: Conf 1 | AP164: 40785 | AR164: 40785.36061 | AS164: FALSE | AT164: CASE - 1.7 machining factor. Keeping all else constant, but decreasing machining factors. 1.7 and 1.0 (drivetrain)
AN166: 11 | AO166: Base | AP166: 40784 | AR166: 40784.7119 | AS166: FALSE | AT166: New cost data. Using values specific for 800 kW instead of a 0.8 factor.
AN169: 8 | AO169: Conf 2 | AP169: 40771 | AR169: 40771.43297 | AS169: FALSE | AT169: Phase 0 Q&A
AN170: 7 | AO170: Conf 2 | AP170: 40771 | AR170: 40771.42981 | AS170: FALSE | AT170: Phase 0 Q&A
AN171: 6 | AO171: Conf 2 | AP171: 40771 | AR171: 40771.42905 | AS171: FALSE | AT171: Phase 0 Q&A
AN172: 5 | AO172: Conf 1 | AP172: 40771 | AR172: 40771.42904 | AS172: FALSE | AT172: Phase 0 Q&A
AN173: 4 | AO173: Conf 2 | AP173: 40771 | AR173: 40771.42858 | AS173: FALSE | AT173: Phase 0 Q&A
AN174: 3 | AO174: Conf 1 | AP174: 40771 | AR174: 40771.42811 | AS174: FALSE | AT174: Phase 0 Q&A
AN175: 2 | AO175: Conf 2 | AP175: 40771 | AR175: 40771.4281 | AS175: FALSE | AT175: Phase 0 Q&A

Sheet 2.3 COE_History (hidden)
B1: COE_History
B2: Cost of Energy Model
B3: Aquantis
H4: 43 | I4: 42 | J4: 41 | K4: 40 | L4: 39 | M4: 38 | N4: 36 | O4: 35 | P4: 34 | Q4: 33 | R4: 32 | S4: 31 | T4: 30 | U4: 29 | V4: 28 | W4: 27 | X4: 26 | Y4: 25 | Z4: 24 | AA4: 23 | AB4: 22 | AC4: 21 | AD4: 19 | AE4: 17 | AF4: 16 | AG4: 15 | AH4: 14 | AI4: 13 | AJ4: 12 | AK4: 11 | AL4: 10 | AM4: 9 | AN4: 8 | AO4: 7 | AP4: 6 | AQ4: 5 | AR4: 4 | AS4: 3 | AT4: 2 | AU4: 1 | AV4: 0
A5: 2 | B5: History of COE | C5: TARGET | D5: Base | E5: Conf 1 | F5: Conf 2 | H5: Base | I5: Base | J5: Base | K5: Base | L5: Base | M5: Base | N5: Base | O5: Base | P5: Base | Q5: Base | R5: Base | S5: Base | T5: Base | U5: Base | V5: Base | W5: Base | X5: Base | Y5: Base | Z5: Base | AA5: Base | AB5: Base | AC5: Base | AD5: Base | AE5: Base | AF5: Conf 1 | AG5: Conf 1 | AH5: Conf 1 | AI5: Conf 1 | AJ5: Conf 1 | AK5: Base | AL5: Conf 1 | AM5: Conf 1 | AN5: Conf 2 | AO5: Conf 2 | AP5: Conf 2 | AQ5: Conf 1 | AR5: Conf 2 | AS5: Conf 1 | AT5: Conf 2 | AU5: TARGET | AV5: [Last Colum]
A6: =A5+1 -> 3 | B6: Date: | C6: =TODAY() -> 2013-01-31 | D6: =TODAY() -> 2013-01-31 | E6: =TODAY() -> 2013-01-31 | F6: =TODAY() -> 2013-01-31 | H6: 2011-10-14 | I6: 2011-10-14 | J6: 2011-10-12 | K6: 2011-10-12 | L6: 2011-10-12 | M6: 2011-10-03 | N6: 2011-09-30 | O6: 2011-09-30 | P6: 2011-09-30 | Q6: 2011-09-30 | R6: 2011-09-30 | S6: 2011-09-27 | T6: 2011-09-25 | U6: 2011-09-25 | V6: 2011-09-25 | W6: 2011-09-25 | X6: 2011-09-25 | Y6: 2011-09-25 | Z6: 2011-09-20 | AA6: 2011-09-20 | AB6: 2011-09-19 | AC6: 2011-09-14 | AD6: 2011-09-06 | AE6: 2011-09-02 | AF6: 2011-08-30 | AG6: 2011-08-30 | AH6: 2011-08-30 | AI6: 2011-08-30 | AJ6: 2011-08-30 | AK6: 2011-08-29 | AL6: 2011-08-15 | AM6: 2011-08-10 | AN6: 2011-08-16 | AO6: 2011-08-16 | AP6: 2011-08-16 | AQ6: 2011-08-16 | AR6: 2011-08-16 | AS6: 2011-08-16 | AT6: 2011-08-16 | AU6: 2011-04-01
A7: 4 | B7: Time: | C7: =NOW() -> 41305.62461 | D7: =NOW() -> 41305.62461 | E7: =NOW() -> 41305.62461 | F7: =NOW() -> 41305.62461 | H7: 40830.65259 | I7: 40830.63011 | J7: 40828.91324 | K7: 40828.55151 | L7: 40828.3905 | M7: 40819.96251 | N7: 40816.62271 | O7: 40816.6192 | P7: 40816.6142 | Q7: 40816.4732 | R7: 40816.47121 | S7: 40813.39436 | T7: 40811.90091 | U7: 40811.88048 | V7: 40811.85867 | W7: 40811.84199 | X7: 40811.8388 | Y7: 40811.8138 | Z7: 40806.35391 | AA7: 40806.33183 | AB7: 40805.54895 | AC7: 40800.42522 | AD7: 40792.62987 | AE7: 40788.3824 | AF7: 40785.38771 | AG7: 40785.38232 | AH7: 40785.3628 | AI7: 40785.36061 | AJ7: 40785.34547 | AK7: 40784.7119 | AL7: 40784.63202 | AM7: 40784.63135 | AN7: 40771.43297 | AO7: 40771.42981 | AP7: 40771.42905 | AQ7: 40771.42904 | AR7: 40771.42858 | AS7: 40771.42811 | AT7: 40771.4281 | AU7: 40784.68437
A8: 5 | B8: Use in historic graph | C8: TRUE | D8: TRUE | E8: TRUE | F8: TRUE | H8: TRUE | I8: FALSE | J8: TRUE | K8: FALSE | L8: FALSE | M8: TRUE | N8: TRUE | O8: FALSE | P8: FALSE | Q8: FALSE | R8: FALSE | S8: FALSE | T8: FALSE | U8: FALSE | V8: FALSE | W8: FALSE | X8: FALSE | Y8: TRUE | Z8: TRUE | AA8: TRUE | AB8: TRUE | AC8: TRUE | AD8: TRUE | AE8: TRUE | AF8: FALSE | AG8: FALSE | AH8: FALSE | AI8: FALSE | AJ8: TRUE | AK8: FALSE | AL8: TRUE | AM8: TRUE | AN8: FALSE | AO8: FALSE | AP8: FALSE | AQ8: FALSE | AR8: FALSE | AS8: FALSE | AT8: FALSE | AU8: TRUE
A9: 6 | B9: Comments: | H9: New reliability data for the hydraulic motors decreased the OPEX. New T&D cost data resultet in a decrease in the T&D costs. Slight increase based on new hydraulic costs, and mooring cost are updated. | I9: New reliability data for the hydraulic motors decreased the OPEX. New T&D cost data resultet in a decrease in the T&D costs. | J9: Updated cost values (CAPEX October 12, 2011), and updated OPEX assessment. Added on uncertainty distributions dependent on the certainty of the estimates. | K9: Updated the OPEX values with the latest cost data. O&M costs are based on current CAPEX costs, not assuming that the Target CAPEX has been reach. | L9: Updated cost values. Updated the uncertainty band, dependent on cost certainty. | M9: Risked run. Updated the blade and hub costs based on cost data from LaGrassa/Koudela. | N9: Using 0.8 correlation between all major CAPEX elements. Using -50%/+50% as the uncertainty ranges for min and max. | O9: Including some correlations | P9: Using proper assumptions instead, no correlation. | Q9: Using -50% / 50% for uncertainty. No correlation is currently added to the uncertainties. | R9: Using -20% / 50% for uncertainty | T9: Improved the uncertainty estimation. Still need to adjust the distribution from Min to P10. | X9: Added uncertainty estimations on the cost data. | Y9: Fixed the Gross Margin. Now the margin is based on the target cost instead of the actual cost. Added uncertainty into the graph. | Z9: New O&M data September 20th.. | AA9: With new updated values (Sept 20). This includes better estimates on blades and rotor hub. | AB9: Using updated weights and cost sheet from Michael LaGrassa (Sept14). Lower costs on platform and drivetrain. | AC9: Updated the gross margin calculation method (28% of final CAPEX, not adding 28% to the CAPEX cost). | AD9: Using updated OPEX values from the O&M model. | AE9: Using current speed at 70m, instead of at 50m. | AF9: CASE - 1.5 machining factor, 0% assembly, 12% gross margin | AG9: CASE - 1.5 machining factor, 0% assembly. Same as 1.5 machining factor, and also removed the assembly percentage. | AH9: CASE - 1.5 machining factor. Keeping all else constant, but decreasing machining factors. 1.5 and 1.0 (drivetrain) | AI9: CASE - 1.7 machining factor. Keeping all else constant, but decreasing machining factors. 1.7 and 1.0 (drivetrain) | AJ9: New cost data. Using values specific for 800 kW instead of a 0.8 factor. | AK9: New cost data. Using values specific for 800 kW instead of a 0.8 factor. | AL9: August 11th power curve. | AM9: Old 800 kW rotor curve. | AN9: Phase 0 Q&A | AO9: Phase 0 Q&A | AP9: Phase 0 Q&A | AQ9: Phase 0 Q&A | AR9: Phase 0 Q&A | AS9: Phase 0 Q&A | AT9: Phase 0 Q&A
A10: 7
A11: 8 | B11: Results [cents/kWh]
A12: 9
A13: 10 | B13: COE Total | C13: =C14+C21 -> 8 | D13: =D14+D21 -> 11.01402292 | E13: =E14+E21 -> 17.71507401 | F13: =F14+F21 -> 10.10217141 | H13: 17.67079735 | I13: 17.63386736 | J13: 20.12477822 | K13: 20.52244625 | L13: 19.4820695 | M13: 21.16256865 | N13: 21.26754079 | O13: 21.26754079 | P13: 21.26754079 | Q13: 21.26754079 | R13: 21.26754079 | S13: 21.26754079 | T13: 21.17407364 | U13: 20.83586012 | V13: 20.83586012 | W13: 20.83586012 | X13: 20.83586012 | Y13: 20.83586012 | Z13: 24.33214804 | AA13: 25.36505083 | AB13: 21.90519335 | AC13: 24.47481879 | AD13: 22.97423774 | AE13: 21.05678953 | AF13: 13.37785984 | AG13: 14.83984581 | AH13: 15.20015285 | AI13: 16.01068781 | AJ13: 19.3724708 | AK13: 19.32030933 | AL13: 20.90425296 | AM13: 25.87979297 | AN13: 20.92217942 | AO13: 25.36792464 | AP13: 21.61009144 | AQ13: 25.90198622 | AR13: 18.95918569 | AS13: 17.328288 | AT13: 17.22766828 | AU13: 10
A14: 11 | B14: Capex Total | C14: =SUM(C15:C20) -> 6.4 | D14: =SUM(D15:D20) -> 9.30505402 | E14: =SUM(E15:E20) -> 15.20866409 | F14: =SUM(F15:F20) -> 8.575333334 | H14: 15.16438742 | I14: 15.12745743 | J14: 15.18602058 | K14: 15.58368861 | L14: 15.21687132 | M14: 16.84172773 | N14: 16.94669987 | O14: 16.94669987 | P14: 16.94669987 | Q14: 16.94669987 | R14: 16.94669987 | S14: 16.94669987 | T14: 16.87222207 | U14: 16.53400855 | V14: 16.53400855 | W14: 16.53400855 | X14: 16.53400855 | Y14: 16.53400855 | Z14: 20.03029646 | AA14: 20.03029646 | AB14: 16.57043898 | AC14: 19.14006442 | AD14: 17.63948337 | AE14: 17.63948337 | AF14: 10.23390176 | AG14: 11.69588772 | AH14: 12.05619476 | AI14: 12.86672973 | AJ14: 16.22851271 | AK14: 16.17635125 | AL14: 17.76029487 | AM14: 21.98752356 | AN14: 17.77822134 | AO14: 21.55590821 | AP14: 17.71782203 | AQ14: 22.0097168 | AR14: 16.26141608 | AS14: 14.86258459 | AT14: 14.77628241 | AU14: 7.5
A15: 12 | B15: Platform | C15: ='2.0 Results'!BS88 -> 1.8432 | D15: ='2.0 Results'!BW88 -> 3.694474285 | E15: ='2.0 Results'!CA88 -> 7.740454419 | F15: ='2.0 Results'!CE88 -> 3.014115 | H15: 7.740454419 | I15: 7.688734183 | J15: 7.688734183 | K15: 7.819671573 | L15: 7.819671573 | M15: 8.228193394 | N15: 8.328166861 | O15: 8.328166861 | P15: 8.328166861 | Q15: 8.328166861 | R15: 8.328166861 | S15: 8.328166861 | T15: 8.291566015 | U15: 7.969457901 | V15: 7.969457901 | W15: 7.969457901 | X15: 7.969457901 | Y15: 7.969457901 | Z15: 7.969457901 | AA15: 7.969457901 | AB15: 5.721540625 | AC15: 5.8648117 | AD15: 5.8648117 | AE15: 5.8648117 | AF15: 3.237413563 | AG15: 3.237413563 | AH15: 3.237413563 | AI15: 3.669068705 | AJ15: 5.395689272 | AK15: 5.395689272 | AL15: 7.334492314 | AM15: 9.0802165 | AN15: 7.334492314 | AO15: 8.892995541 | AP15: 7.309574282 | AQ15: 9.0802165 | AR15: 6.385630576 | AS15: 5.836329021 | AT15: 5.802439361 | AU15: 2.34375
A16: 13 | B16: Drivetrain | C16: ='2.0 Results'!BS87 -> 1.3824 | D16: ='2.0 Results'!BW87 -> 1.984355514 | E16: ='2.0 Results'!CA87 -> 1.900402527 | F16: ='2.0 Results'!CE87 -> 1.707446287 | H16: 1.882494896 | I16: 1.899043713 | J16: 1.899043713 | K16: 1.618968524 | L16: 1.618968524 | M16: 2.143995895 | N16: 2.143995895 | O16: 2.143995895 | P16: 2.143995895 | Q16: 2.143995895 | R16: 2.143995895 | S16: 2.143995895 | T16: 2.134573406 | U16: 2.134573406 | V16: 2.134573406 | W16: 2.134573406 | X16: 2.134573406 | Y16: 2.134573406 | Z16: 2.134573406 | AA16: 2.134573406 | AB16: 2.010016985 | AC16: 3.628774783 | AD16: 3.628774783 | AE16: 3.628774783 | AF16: 2.392383952 | AG16: 2.392383952 | AH16: 2.392383952 | AI16: 2.563805421 | AJ16: 3.338511476 | AK16: 3.299700865 | AL16: 2.539427305 | AM16: 3.143850825 | AN16: 2.539427305 | AO16: 3.079029159 | AP16: 2.530799914 | AQ16: 3.143850825 | AR16: 2.210902125 | AS16: 2.020716996 | AT16: 2.008983351 | AU16: 0.87890625
A17: 14 | B17: Mooring | C17: ='2.0 Results'!BS86 -> 0.4608 | D17: ='2.0 Results'!BW86 -> 0.4563025136 | E17: ='2.0 Results'!CA86 -> 1.609553508 | F17: ='2.0 Results'!CE86 -> 0.4914359517 | H17: 1.609553508 | I17: 1.609553508 | J17: 1.446523602 | K17: 1.446523602 | L17: 1.079706313 | M17: 1.669196965 | N17: 1.669196965 | O17: 1.669196965 | P17: 1.669196965 | Q17: 1.669196965 | R17: 1.669196965 | S17: 1.669196965 | T17: 1.661861134 | U17: 1.661861134 | V17: 1.661861134 | W17: 1.661861134 | X17: 1.661861134 | Y17: 1.661861134 | Z17: 1.661861134 | AA17: 1.661861134 | AB17: 1.661861134 | AC17: 1.661861134 | AD17: 1.661861134 | AE17: 1.661861134 | AF17: 1.528929956 | AG17: 1.528929956 | AH17: 1.528929956 | AI17: 1.528929956 | AJ17: 1.528929956 | AK17: 1.528929956 | AL17: 1.528929956 | AM17: 1.892839261 | AN17: 1.528929956 | AO17: 1.853811648 | AP17: 1.523735605 | AQ17: 1.892839261 | AR17: 1.623978305 | AS17: 1.484281246 | AT17: 1.475662509 | AU17: 1.171875
A18: 15 | B18: Grid | C18: ='2.0 Results'!BS85 -> 0.64512 | D18: ='2.0 Results'!BW85 -> 0.7085417712 | E18: ='2.0 Results'!CA85 -> 0.8728621188 | F18: ='2.0 Results'!CE85 -> 0.9383404405 | H18: 0.8728621188 | I18: 0.8728621188 | J18: 1.09445517 | K18: 1.648717889 | L18: 1.648717889 | M18: 1.670226662 | N18: 1.670226662 | O18: 1.670226662 | P18: 1.670226662 | Q18: 1.670226662 | R18: 1.670226662 | S18: 1.670226662 | T18: 1.662886306 | U18: 1.662886306 | V18: 1.662886306 | W18: 1.662886306 | X18: 1.662886306 | Y18: 1.662886306 | Z18: 1.662886306 | AA18: 1.662886306 | AB18: 1.662886306 | AC18: 1.662886306 | AD18: 1.662886306 | AE18: 1.662886306 | AF18: 1.529873125 | AG18: 1.529873125 | AH18: 1.529873125 | AI18: 1.529873125 | AJ18: 1.529873125 | AK18: 1.529873125 | AL18: 1.529873125 | AM18: 1.894006919 | AN18: 1.529873125 | AO18: 1.85495523 | AP18: 1.52467557 | AQ18: 1.894006919 | AR18: 1.731539886 | AS18: 1.582590219 | AT18: 1.573400633 | AU18: 1.171875
A19: 16 | B19: Assembly and Installation | C19: ='2.0 Results'!BS84 -> 0.27648 | D19: ='2.0 Results'!BW84 -> 0.6693799356 | E19: ='2.0 Results'!CA84 -> 0.991192887 | F19: ='2.0 Results'!CE84 -> 0.8820624047 | H19: 0.9648240826 | I19: 0.9630655116 | J19: 0.9630655116 | K19: 0.9556086217 | L19: 0.9556086217 | M19: 1.008596009 | N19: 1.013594682 | O19: 1.013594682 | P19: 1.013594682 | Q19: 1.013594682 | R19: 1.013594682 | S19: 1.013594682 | T19: 1.00914011 | U19: 0.9930347042 | V19: 0.9930347042 | W19: 0.9930347042 | X19: 0.9930347042 | Y19: 0.9930347042 | Z19: 0.9930347042 | AA19: 0.9930347042 | AB19: 0.8744110193 | AC19: 0.9625124629 | AD19: 0.9625124629 | AE19: 0.9625124629 | AF19: 0.4488116872 | AG19: 0.4488116872 | AH19: 0.7303015629 | AI19: 0.7604553934 | AJ19: 0.8855217246 | AK19: 0.8835811941 | AL19: 0.9425076681 | AM19: 1.166839273 | AN19: 0.9565127201 | AO19: 1.159761711 | AP19: 0.9532630863 | AQ19: 1.184177747 | AR19: 0.7521804225 | AS19: 0.6874767303 | AT19: 0.683484777 | AU19: 0.29296875
A20: 17 | B20: Gross Margin | C20: ='2.0 Results'!BT89 -> 1.792 | D20: ='2.0 Results'!BX89 -> 1.792 | E20: ='2.0 Results'!CB89 -> 2.094198625 | F20: ='2.0 Results'!CF89 -> 1.541933249 | H20: 2.094198398 | I20: 2.094198398 | J20: 2.094198398 | K20: 2.094198398 | L20: 2.094198398 | M20: 2.121518802 | N20: 2.121518802 | O20: 2.121518802 | P20: 2.121518802 | Q20: 2.121518802 | R20: 2.121518802 | S20: 2.121518802 | T20: 2.112195096 | U20: 2.112195096 | V20: 2.112195096 | W20: 2.112195096 | X20: 2.112195096 | Y20: 2.112195096 | Z20: 5.608483009 | AA20: 5.608483009 | AB20: 4.639722916 | AC20: 5.359218039 | AD20: 3.858636988 | AE20: 3.858636988 | AF20: 1.096489474 | AG20: 2.558475439 | AH20: 2.637292605 | AI20: 2.814597128 | AJ20: 3.549987155 | AK20: 3.538576836 | AL20: 3.885064503 | AM20: 4.809770778 | AN20: 3.888985918 | AO20: 4.715354921 | AP20: 3.875773568 | AQ20: 4.814625551 | AR20: 3.557184768 | AS20: 3.25119038 | AT20: 3.232311777 | AU20: 1.640625
A21: 18 | B21: OPEX Total | C21: ='2.0 Results'!BU90 -> 1.6 | D21: ='2.0 Results'!BY90 -> 1.708968903 | E21: ='2.0 Results'!CC90 -> 2.506409925 | F21: ='2.0 Results'!CG90 -> 1.526838074 | H21: 2.506409925 | I21: 2.506409925 | J21: 4.938757642 | K21: 4.938757642 | L21: 4.265198181 | M21: 4.32084092 | N21: 4.32084092 | O21: 4.32084092 | P21: 4.32084092 | Q21: 4.32084092 | R21: 4.32084092 | S21: 4.32084092 | T21: 4.301851576 | U21: 4.301851576 | V21: 4.301851576 | W21: 4.301851576 | X21: 4.301851576 | Y21: 4.301851576 | Z21: 4.301851576 | AA21: 5.334754368 | AB21: 5.334754368 | AC21: 5.334754368 | AD21: 5.334754368 | AE21: 3.417306156 | AF21: 3.143958086 | AG21: 3.143958086 | AH21: 3.143958086 | AI21: 3.143958086 | AJ21: 3.143958086 | AK21: 3.143958086 | AL21: 3.143958086 | AM21: 3.892269412 | AN21: 3.143958086 | AO21: 3.812016435 | AP21: 3.892269412 | AQ21: 3.892269412 | AR21: 2.697769611 | AS21: 2.465703408 | AT21: 2.451385872 | AU21: 2.5
A22: 19 | B22: O&M
A23: 20 | B23: Lease cost
A24: 21 | B24: Liquidated damages
A25: 22
A26: 23 | B26: Power Density [W/kg] | C26: ='2.0 Results'!D37 -> 2.482007779 | D26: ='2.0 Results'!F37 -> 2.482007779 | E26: ='2.0 Results'!H37 -> 1.546358414 | F26: ='2.0 Results'!J37 -> 3.500874177 | H26: 1.546358443 | I26: 1.551488684 | J26: 1.551488684 | K26: 1.932001766 | L26: 1.932001766 | M26: 2.026380674 | N26: 2.026380674 | O26: 2.026380674 | P26: 2.026380674 | Q26: 2.026380674 | R26: 2.026380674 | S26: 2.026380674 | T26: 2.026380674 | U26: 2.026380674 | V26: 2.026380674 | W26: 2.026380674 | X26: 2.026380674 | Y26: 2.026380674 | Z26: 2.026380674 | AA26: 2.026380674 | AB26: 1.684210526 | AC26: 1.684210526 | AD26: 1.684210526 | AE26: 1.684210526 | AF26: 1.66695448 | AG26: 1.66695448 | AH26: 1.66695448 | AI26: 1.66695448 | AJ26: 1.66695448 | AK26: 1.684210526 | AL26: 1.66695448 | AM26: 1.66695448 | AN26: 1.66695448 | AO26: 1.66695448 | AP26: 1.66695448 | AQ26: 1.66695448 | AR26: 2.70880103 | AS26: 2.70880103 | AT26: 2.70880103 | AU26: 1.684210526
A27: 24 | B27: Energy Density [kWh/kg] | C27: ='2.0 Results'!D39 -> 3.262220349 | D27: ='2.0 Results'!F39 -> 3.262220349 | E27: ='2.0 Results'!H39 -> 1.897024231 | F27: ='2.0 Results'!J39 -> 9.102301513 | H27: 1.897024266 | I27: 1.903317886 | J27: 1.903317886 | K27: 2.370119457 | L27: 2.370119457 | M27: 2.453887732 | N27: 2.453887732 | O27: 2.453887732 | P27: 2.453887732 | Q27: 2.453887732 | R27: 2.453887732 | S27: 2.453887732 | T27: 2.464719747 | U27: 2.464719747 | V27: 2.464719747 | W27: 2.464719747 | X27: 2.464719747 | Y27: 2.464719747 | Z27: 2.464719747 | AA27: 2.464719747 | AB27: 2.048532635 | AC27: 2.048532635 | AD27: 2.048532635 | AE27: 2.048532635 | AF27: 2.203826453 | AG27: 2.203826453 | AH27: 2.203826453 | AI27: 2.203826453 | AJ27: 2.203826453 | AK27: 2.226640112 | AL27: 2.203826453 | AM27: 1.78012806 | AN27: 2.203826453 | AO27: 1.81760444 | AP27: 1.78012806 | AQ27: 1.78012806 | AR27: 3.164125294 | AS27: 3.461925322 | AT27: 3.482145003 | AU27: 1.83641999
A28: 25 | B28: Net Annual Production [kWh/yr] | C28: ='2.0 Results'!D28 -> 10539888.89 | D28: ='2.0 Results'!F28 -> 21029557.62 | E28: ='2.0 Results'!H28 -> 15702640.43 | F28: ='2.0 Results'!J28 -> 12220038.47 | H28: 15702640.43 | I28: 15702640.43 | J28: 15702640.43 | K28: 15702640.43 | L28: 15702640.43 | M28: 15500425.64 | N28: 15500425.64 | O28: 15500425.64 | P28: 15500425.64 | Q28: 15500425.64 | R28: 15500425.64 | S28: 15500425.64 | T28: 15568848.03 | U28: 15568848.03 | V28: 15568848.03 | W28: 15568848.03 | X28: 15568848.03 | Y28: 15568848.03 | Z28: 15568848.03 | AA28: 15568848.03 | AB28: 15568848.03 | AC28: 15568848.03 | AD28: 15568848.03 | AE28: 15568848.03 | AF28: 16922464.85 | AG28: 16922464.85 | AH28: 16922464.85 | AI28: 16922464.85 | AJ28: 16922464.85 | AK28: 16922464.85 | AL28: 16922464.85 | AM28: 13669023.02 | AN28: 16922464.85 | AO28: 13956791.93 | AP28: 13669023.02 | AQ28: 13669023.02 | AR28: 24296286.58 | AS28: 26582995.9 | AT28: 26738256.24 | AU28: 19200000
A29: 26
A30: 27 | B30: Input settings
A31: 28 | B31: ='1.2 Input'!B$8 -> Rated power per rotor [kW] | C31: ='1.2 Input'!C$8 -> 1000 | D31: ='1.2 Input'!E$8 -> 1000 | E31: ='1.2 Input'!G$8 -> 800 | F31: ='1.2 Input'!I$8 -> 1175 | H31: 800 | I31: 800 | J31: 800 | K31: 800 | L31: 800 | M31: 800 | N31: 800 | O31: 800 | P31: 800 | Q31: 800 | R31: 800 | S31: 800 | T31: 800 | U31: 800 | V31: 800 | W31: 800 | X31: 800 | Y31: 800 | Z31: 800 | AA31: 800 | AB31: 800 | AC31: 800 | AD31: 800 | AE31: 800 | AF31: 800 | AG31: 800 | AH31: 800 | AI31: 800 | AJ31: 800 | AK31: 800 | AL31: 800 | AM31: 800 | AN31: 800 | AO31: 800 | AP31: 800 | AQ31: 800 | AR31: 1300 | AS31: 1300 | AT31: 1300 | AU31: 800
A32: 29 | B32: ='1.2 Input'!B$9 -> # of rotors per C-Plane | C32: ='1.2 Input'!C$9 -> 2 | D32: ='1.2 Input'!E$9 -> 4 | E32: ='1.2 Input'!G$9 -> 4 | F32: ='1.2 Input'!I$9 -> 2 | H32: 4 | I32: 4 | J32: 4 | K32: 4 | L32: 4 | M32: 4 | N32: 4 | O32: 4 | P32: 4 | Q32: 4 | R32: 4 | S32: 4 | T32: 4 | U32: 4 | V32: 4 | W32: 4 | X32: 4 | Y32: 4 | Z32: 4 | AA32: 4 | AB32: 4 | AC32: 4 | AD32: 4 | AE32: 4 | AF32: 4 | AG32: 4 | AH32: 4 | AI32: 4 | AJ32: 4 | AK32: 4 | AL32: 4 | AM32: 4 | AN32: 4 | AO32: 4 | AP32: 4 | AQ32: 4 | AR32: 4 | AS32: 4 | AT32: 4 | AU32: 4
A33: 30 | B33: ='1.2 Input'!B$12 -> # of C-Planes per farm | C33: ='1.2 Input'!C$12 -> 50 | D33: ='1.2 Input'!E$12 -> 25 | E33: ='1.2 Input'!G$12 -> 32 | F33: ='1.2 Input'!I$12 -> 43 | H33: 32 | I33: 32 | J33: 32 | K33: 32 | L33: 32 | M33: 32 | N33: 32 | O33: 32 | P33: 32 | Q33: 32 | R33: 32 | S33: 32 | T33: 32 | U33: 32 | V33: 32 | W33: 32 | X33: 32 | Y33: 32 | Z33: 32 | AA33: 32 | AB33: 32 | AC33: 32 | AD33: 32 | AE33: 32 | AF33: 32 | AG33: 32 | AH33: 32 | AI33: 32 | AJ33: 32 | AK33: 32 | AL33: 32 | AM33: 32 | AN33: 20 | AO33: 20 | AP33: 20 | AQ33: 20 | AR33: 20 | AS33: 20 | AT33: 20 | AU33: 32
A34: 31 | B34: ='1.2 Input'!B$16 -> Drivetrain | C34: ='1.2 Input'!C$16 -> 0 | D34: ='1.2 Input'!E$16 -> Hydraulic | E34: ='1.2 Input'!G$16 -> Hydraulic | F34: ='1.2 Input'!I$16 -> Hydraulic | H34: Hydraulic | I34: Hydraulic | J34: Hydraulic | K34: Hydraulic | L34: Hydraulic | M34: Hydraulic | N34: Hydraulic | O34: Hydraulic | P34: Hydraulic | Q34: Hydraulic | R34: Hydraulic | S34: Hydraulic | T34: Hydraulic | U34: Hydraulic | V34: Hydraulic | W34: Hydraulic | X34: Hydraulic | Y34: Hydraulic | Z34: Hydraulic | AA34: Hydraulic | AB34: Hydraulic | AC34: Hydraulic | AD34: Hydraulic | AE34: Hydraulic | AF34: Hydraulic | AG34: Hydraulic | AH34: Hydraulic | AI34: Hydraulic | AJ34: Hydraulic | AK34: Hydraulic | AL34: Hydraulic | AM34: Hydraulic | AN34: Hydraulic | AO34: Hydraulic | AP34: Hydraulic | AQ34: Hydraulic | AR34: Hydraulic | AS34: Mechanical | AT34: Hydraulic | AU34: 0
A35: 32 | B35: ='1.2 Input'!B$20 -> Generator RPM | C35: ='1.2 Input'!C$20 -> 0 | D35: ='1.2 Input'!E$20 -> Variable speed | E35: ='1.2 Input'!G$20 -> Variable speed | F35: ='1.2 Input'!I$20 -> Variable speed | H35: Variable speed | I35: Variable speed | J35: Variable speed | K35: Variable speed | L35: Variable speed | M35: Variable speed | N35: Variable speed | O35: Variable speed | P35: Variable speed | Q35: Variable speed | R35: Variable speed | S35: Variable speed | T35: Variable speed | U35: Variable speed | V35: Variable speed | W35: Variable speed | X35: Variable speed | Y35: Variable speed | Z35: Variable speed | AA35: Variable speed | AB35: Variable speed | AC35: Variable speed | AD35: Variable speed | AE35: Variable speed | AF35: Variable speed | AG35: Variable speed | AH35: Variable speed | AI35: Variable speed | AJ35: Variable speed | AK35: Variable speed | AL35: Variable speed | AM35: Variable speed | AN35: Variable speed | AO35: Variable speed | AP35: Variable speed | AQ35: Variable speed | AR35: Variable speed | AS35: Variable speed | AT35: Variable speed | AU35: 0
A36: 33 | B36: ='1.2 Input'!B$22 -> Drivetrain efficiency model | C36: ='1.2 Input'!C$22 -> 0 | D36: ='1.2 Input'!E$22 -> Based on power output | E36: ='1.2 Input'!G$22 -> Based on power output | F36: ='1.2 Input'!I$22 -> Based on power output | H36: Based on power output | I36: Based on power output | J36: Based on power output | K36: Based on power output | L36: Based on power output | M36: Based on power output | N36: Based on power output | O36: Based on power output | P36: Based on power output | Q36: Based on power output | R36: Based on power output | S36: Based on power output | T36: Fixed efficiency | U36: Fixed efficiency | V36: Fixed efficiency | W36: Fixed efficiency | X36: Fixed efficiency | Y36: Fixed efficiency | Z36: Fixed efficiency | AA36: Fixed efficiency | AB36: Fixed efficiency | AC36: Fixed efficiency | AD36: Fixed efficiency | AE36: Fixed efficiency | AF36: Fixed efficiency | AG36: Fixed efficiency | AH36: Fixed efficiency | AI36: Fixed efficiency | AJ36: Fixed efficiency | AK36: Fixed efficiency | AL36: Fixed efficiency | AM36: Fixed efficiency | AN36: Fixed efficiency | AO36: Fixed efficiency | AP36: Fixed efficiency | AQ36: Fixed efficiency | AR36: Fixed efficiency | AS36: Fixed efficiency | AT36: Fixed efficiency | AU36: 0
A37: 34
A38: 35 | B38: Rotor power curve | C38: Rotor power curve | D38: Rotor power curve | E38: Rotor power curve | F38: Rotor power curve | H38: Rotor power curve | I38: Rotor power curve | J38: Rotor power curve | K38: Rotor power curve | L38: Rotor power curve | M38: Rotor power curve | N38: Rotor power curve | O38: Rotor power curve | P38: Rotor power curve | Q38: Rotor power curve | R38: Rotor power curve | S38: Rotor power curve | T38: Rotor power curve | U38: Rotor power curve | V38: Rotor power curve | W38: Rotor power curve | X38: Rotor power curve | Y38: Rotor power curve | Z38: Rotor power curve | AA38: Rotor power curve | AB38: Rotor power curve | AC38: Rotor power curve | AD38: Rotor power curve | AE38: Rotor power curve | AF38: Rotor power curve | AG38: Rotor power curve | AH38: Rotor power curve | AI38: Rotor power curve | AJ38: Rotor power curve | AK38: Rotor power curve | AL38: Rotor power curve | AM38: Rotor power curve | AN38: Rotor power curve | AO38: Rotor power curve | AP38: Rotor power curve | AQ38: Rotor power curve | AR38: Rotor power curve | AS38: Rotor power curve | AT38: Rotor power curve | AU38: Rotor power curve
A39: 36 | B39: ='1.2 Input'!B$38 -> Manual over-ride? | C39: ='1.2 Input'!C$38 -> 0 | D39: ='1.2 Input'!E$38 -> HY 1.0 MW VS Jan27,12 | E39: ='1.2 Input'!G$38 -> Sept1 HY 0.8MW VS | F39: ='1.2 Input'!I$38 -> Auto | H39: Sept1 HY 0.8MW VS | I39: Sept1 HY 0.8MW VS | J39: Sept1 HY 0.8MW VS | K39: Sept1 HY 0.8MW VS | L39: Sept1 HY 0.8MW VS | M39: Sept1 HY 0.8MW VS | N39: Sept1 HY 0.8MW VS | O39: Sept1 HY 0.8MW VS | P39: Sept1 HY 0.8MW VS | Q39: Sept1 HY 0.8MW VS | R39: Sept1 HY 0.8MW VS | S39: Sept1 HY 0.8MW VS | T39: Sept1 HY 0.8MW VS | U39: Sept1 HY 0.8MW VS | V39: Sept1 HY 0.8MW VS | W39: Sept1 HY 0.8MW VS | X39: Sept1 HY 0.8MW VS | Y39: Sept1 HY 0.8MW VS | Z39: Sept1 HY 0.8MW VS | AA39: Sept1 HY 0.8MW VS | AB39: Sept1 HY 0.8MW VS | AC39: Sept1 HY 0.8MW VS | AD39: Sept1 HY 0.8MW VS | AE39: Sept1 HY 0.8MW VS | AF39: Aug11 HY 0.8MW VS | AG39: Aug11 HY 0.8MW VS | AH39: Aug11 HY 0.8MW VS | AI39: Aug11 HY 0.8MW VS | AJ39: Aug11 HY 0.8MW VS | AK39: Aug11 HY 0.8MW VS | AL39: Aug11 HY 0.8MW VS | AM39: Auto | AN39: Aug11 HY 0.8MW VS | AO39: Auto | AP39: Auto | AQ39: Auto | AR39: ME 1.3 MW VS | AS39: Auto | AT39: Auto | AU39: 0
A40: 37 | B40: ='1.2 Input'!B$40 -> Value in use: | C40: ='1.2 Input'!C$40 -> 0 | D40: ='1.2 Input'!E$40 -> HY 1.0 MW VS Jan27,12 | E40: ='1.2 Input'!G$40 -> Sept1 HY 0.8MW VS | F40: ='1.2 Input'!I$40 -> HY 1.3 MW 45.5 | H40: Sept1 HY 0.8MW VS | I40: Sept1 HY 0.8MW VS | J40: Sept1 HY 0.8MW VS | K40: Sept1 HY 0.8MW VS | L40: Sept1 HY 0.8MW VS | M40: Sept1 HY 0.8MW VS | N40: Sept1 HY 0.8MW VS | O40: Sept1 HY 0.8MW VS | P40: Sept1 HY 0.8MW VS | Q40: Sept1 HY 0.8MW VS | R40: Sept1 HY 0.8MW VS | S40: Sept1 HY 0.8MW VS | T40: Sept1 HY 0.8MW VS | U40: Sept1 HY 0.8MW VS | V40: Sept1 HY 0.8MW VS | W40: Sept1 HY 0.8MW VS | X40: Sept1 HY 0.8MW VS | Y40: Sept1 HY 0.8MW VS | Z40: Sept1 HY 0.8MW VS | AA40: Sept1 HY 0.8MW VS | AB40: Sept1 HY 0.8MW VS | AC40: Sept1 HY 0.8MW VS | AD40: Sept1 HY 0.8MW VS | AE40: Sept1 HY 0.8MW VS | AF40: Aug11 HY 0.8MW VS | AG40: Aug11 HY 0.8MW VS | AH40: Aug11 HY 0.8MW VS | AI40: Aug11 HY 0.8MW VS | AJ40: Aug11 HY 0.8MW VS | AK40: Aug11 HY 0.8MW VS | AL40: Aug11 HY 0.8MW VS | AM40: HY 0.8 MW VS | AN40: Aug11 HY 0.8MW VS | AO40: HY 0.8 MW VS | AP40: HY 0.8 MW VS | AQ40: HY 0.8 MW VS | AR40: ME 1.3 MW VS | AS40: ME 1.3 MW VS | AT40: HY 1.3 MW VS | AU40: 0
A41: 38 | B41: ='1.2 Input'!B$41 -> Curve name: | C41: ='1.2 Input'!C$41 -> 0 | D41: ='1.2 Input'!E$41 -> 1200KW_Jan27 | E41: ='1.2 Input'!G$41 -> 950KW_VS_3 | F41: ='1.2 Input'!I$41 -> 45P5D_3HD_2B_TSR8P0_CR | H41: 950KW_VS_3 | I41: 950KW_VS_3 | J41: 950KW_VS_3 | K41: 950KW_VS_3 | L41: 950KW_VS_3 | M41: 950KW_VS_3 | N41: 950KW_VS_3 | O41: 950KW_VS_3 | P41: 950KW_VS_3 | Q41: 950KW_VS_3 | R41: 950KW_VS_3 | S41: 950KW_VS_3 | T41: 950KW_VS_3 | U41: 950KW_VS_3 | V41: 950KW_VS_3 | W41: 950KW_VS_3 | X41: 950KW_VS_3 | Y41: 950KW_VS_3 | Z41: 950KW_VS_3 | AA41: 950KW_VS_3 | AB41: 950KW_VS_3 | AC41: 950KW_VS_3 | AD41: 950KW_VS_3 | AE41: 950KW_VS_3 | AF41: 950KW_VS_2 | AG41: 950KW_VS_2 | AH41: 950KW_VS_2 | AI41: 950KW_VS_2 | AJ41: 950KW_VS_2 | AK41: 950KW_VS_2 | AL41: 950KW_VS_2 | AM41: 0.95 VS Case | AN41: 950KW_VS_2 | AO41: 0.95 VS Case | AP41: 0.95 VS Case | AQ41: 0.95 VS Case | AR41: 1.45 VS Case | AS41: 1.45 VS Case | AT41: 1.55 VS Case | AU41: 0
A42: 39
A43: 40 | B43: O&M Input | C43: O&M Input | D43: O&M Input | E43: O&M Input | F43: O&M Input | H43: O&M Input | I43: O&M Input | J43: O&M Input | K43: O&M Input | L43: O&M Input | M43: O&M Input | N43: O&M Input | O43: O&M Input | P43: O&M Input | Q43: O&M Input | R43: O&M Input | S43: O&M Input | T43: O&M Input | U43: O&M Input | V43: O&M Input | W43: O&M Input | X43: O&M Input | Y43: O&M Input | Z43: O&M Input | AA43: O&M Input | AB43: O&M Input | AC43: O&M Input | AD43: O&M Input | AE43: O&M Input | AF43: O&M Input | AG43: O&M Input | AH43: O&M Input | AI43: O&M Input | AJ43: O&M Input | AK43: O&M Input | AL43: O&M Input | AM43: O&M Input | AN43: O&M Input | AO43: O&M Input | AP43: O&M Input | AQ43: O&M Input | AR43: O&M Input | AS43: O&M Input | AT43: O&M Input | AU43: O&M Input
A44: 41 | B44: ='1.2 Input'!B$55 -> Crystal Ball or Lookup table | C44: ='1.2 Input'!C$55 -> Lookup Table | D44: ='1.2 Input'!E$55 -> Lookup Table | E44: ='1.2 Input'!G$55 -> Lookup Table | F44: ='1.2 Input'!I$55 -> Lookup Table | H44: Lookup Table | I44: Lookup Table | J44: Lookup Table | K44: Lookup Table | L44: Lookup Table | M44: Lookup Table | N44: Lookup Table | O44: Lookup Table | P44: Lookup Table | Q44: Lookup Table | R44: Lookup Table | S44: Lookup Table | T44: Lookup Table | U44: Lookup Table | V44: Lookup Table | W44: Lookup Table | X44: Lookup Table | Y44: Lookup Table | Z44: Lookup Table | AA44: Lookup Table | AB44: Lookup Table | AC44: Lookup Table | AD44: Lookup Table | AE44: Lookup Table | AF44: Lookup Table | AG44: Lookup Table | AH44: Lookup Table | AI44: Lookup Table | AJ44: Lookup Table | AK44: Lookup Table | AL44: Lookup Table | AM44: Lookup Table | AN44: Lookup Table | AO44: Lookup Table | AP44: Lookup Table | AQ44: Lookup Table | AR44: Lookup Table | AS44: Lookup Table | AT44: Lookup Table | AU44: Lookup Table
A45: 42
A46: 43 | B46: Energy Estimate input: | C46: Energy Estimate input: | D46: Energy Estimate input: | E46: Energy Estimate input: | F46: Energy Estimate input: | H46: Energy Estimate input: | I46: Energy Estimate input: | J46: Energy Estimate input: | K46: Energy Estimate input: | L46: Energy Estimate input: | M46: Energy Estimate input: | N46: Energy Estimate input: | O46: Energy Estimate input: | P46: Energy Estimate input: | Q46: Energy Estimate input: | R46: Energy Estimate input: | S46: Energy Estimate input: | T46: Energy Estimate input: | U46: Energy Estimate input: | V46: Energy Estimate input: | W46: Energy Estimate input: | X46: Energy Estimate input: | Y46: Energy Estimate input: | Z46: Energy Estimate input: | AA46: Energy Estimate input: | AB46: Energy Estimate input: | AC46: Energy Estimate input: | AD46: Energy Estimate input: | AE46: Energy Estimate input: | AF46: Energy Estimate input: | AG46: Energy Estimate input: | AH46: Energy Estimate input: | AI46: Energy Estimate input: | AJ46: Energy Estimate input: | AK46: Energy Estimate input: | AL46: Energy Estimate input: | AM46: Energy Estimate input: | AN46: Energy Estimate input: | AO46: Energy Estimate input: | AP46: Energy Estimate input: | AQ46: Energy Estimate input: | AR46: Energy Estimate input: | AS46: Energy Estimate input: | AT46: Energy Estimate input: | AU46: Energy Estimate input:
A47: 44 | B47: ='1.2 Input'!B$61 -> Use Cut-in and Cut-out | C47: ='1.2 Input'!C$61 -> 0 | D47: ='1.2 Input'!E$61 -> Yes | E47: ='1.2 Input'!G$61 -> Yes | F47: ='1.2 Input'!I$61 -> Yes | H47: Yes | I47: Yes | J47: Yes | K47: Yes | L47: Yes | M47: Yes | N47: Yes | O47: Yes | P47: Yes | Q47: Yes | R47: Yes | S47: Yes | T47: Yes | U47: Yes | V47: Yes | W47: Yes | X47: Yes | Y47: Yes | Z47: Yes | AA47: Yes | AB47: Yes | AC47: Yes | AD47: Yes | AE47: Yes | AF47: Yes | AG47: Yes | AH47: Yes | AI47: Yes | AJ47: Yes | AK47: Yes | AL47: Yes | AM47: Yes | AN47: Yes | AO47: Yes | AP47: Yes | AQ47: Yes | AR47: Yes | AS47: Yes | AT47: Yes | AU47: 0
A48: 45 | B48: ='1.2 Input'!B$66 -> Include dive down? | C48: ='1.2 Input'!C$66 -> 0 | D48: ='1.2 Input'!E$66 -> Yes | E48: ='1.2 Input'!G$66 -> Yes | F48: ='1.2 Input'!I$66 -> Yes | H48: Yes | I48: Yes | J48: Yes | K48: Yes | L48: Yes | M48: Yes | N48: Yes | O48: Yes | P48: Yes | Q48: Yes | R48: Yes | S48: Yes | T48: Yes | U48: Yes | V48: Yes | W48: Yes | X48: Yes | Y48: Yes | Z48: Yes | AA48: Yes | AB48: Yes | AC48: Yes | AD48: Yes | AE48: Yes | AF48: Yes | AG48: Yes | AH48: Yes | AI48: Yes | AJ48: Yes | AK48: Yes | AL48: Yes | AM48: Yes | AN48: Yes | AO48: Yes | AP48: Yes | AQ48: Yes | AR48: Yes | AS48: Yes | AT48: Yes | AU48: 0
A49: 46 | B49: ='1.2 Input'!B$67 -> Dive down speed [m/s]: | C49: ='1.2 Input'!C$67 -> 0 | D49: ='1.2 Input'!E$67 -> 1.6 | E49: ='1.2 Input'!G$67 -> 1.6 | F49: ='1.2 Input'!I$67 -> 1.6 | H49: 1.6 | I49: 1.6 | J49: 1.6 | K49: 1.6 | L49: 1.6 | M49: 1.6 | N49: 1.6 | O49: 1.6 | P49: 1.6 | Q49: 1.6 | R49: 1.6 | S49: 1.6 | T49: 1.6 | U49: 1.6 | V49: 1.6 | W49: 1.6 | X49: 1.6 | Y49: 1.6 | Z49: 1.6 | AA49: 1.6 | AB49: 1.6 | AC49: 1.6 | AD49: 1.6 | AE49: 1.6 | AF49: 1.6 | AG49: 1.6 | AH49: 1.6 | AI49: 1.6 | AJ49: 1.6 | AK49: 1.6 | AL49: 1.6 | AM49: 1.6 | AN49: 1.6 | AO49: 1.6 | AP49: 1.6 | AQ49: 1.6 | AR49: 1.6 | AS49: 1.6 | AT49: 1.6 | AU49: 0
A50: 47 | B50: ='1.2 Input'!B$69 -> Energy Losses | C50: ='1.2 Input'!C$69 -> 0 | D50: ='1.2 Input'!E$69 -> Med / 95% | E50: ='1.2 Input'!G$69 -> Med / 95% | F50: ='1.2 Input'!I$69 -> Med / 95% | H50: Med / 95% | I50: Med / 95% | J50: Med / 95% | K50: Med / 95% | L50: Med / 95% | M50: Med / 95% | N50: Med / 95% | O50: Med / 95% | P50: Med / 95% | Q50: Med / 95% | R50: Med / 95% | S50: Med / 95% | T50: Med / 95% | U50: Med / 95% | V50: Med / 95% | W50: Med / 95% | X50: Med / 95% | Y50: Med / 95% | Z50: Med / 95% | AA50: Med / 95% | AB50: Med / 95% | AC50: Med / 95% | AD50: Med / 95% | AE50: Med / 95% | AF50: Med / 95% | AG50: Med / 95% | AH50: Med / 95% | AI50: Med / 95% | AJ50: Med / 95% | AK50: Med / 95% | AL50: Med / 95% | AM50: Med / 95% | AN50: Med / 95% | AO50: Med / 97% | AP50: Med / 95% | AQ50: Med / 95% | AR50: Med / 95% | AS50: Med / 95% | AT50: Med / 95% | AU50: 0
A51: 48 | B51: ='1.2 Input'!B$73 -> Current resource: | C51: ='1.2 Input'!C$73 -> 0 | D51: ='1.2 Input'!E$73 -> C-70 | E51: ='1.2 Input'!G$73 -> C-70 | F51: ='1.2 Input'!I$73 -> V-bar-66.2 | H51: C-70 | I51: C-70 | J51: C-70 | K51: C-70 | L51: C-70 | M51: C-70 | N51: C-70 | O51: C-70 | P51: C-70 | Q51: C-70 | R51: C-70 | S51: C-70 | T51: C-70 | U51: C-70 | V51: C-70 | W51: C-70 | X51: C-70 | Y51: C-70 | Z51: C-70 | AA51: C-70 | AB51: C-70 | AC51: C-70 | AD51: C-70 | AE51: C-70 | AF51: C-50 | AG51: C-50 | AH51: C-50 | AI51: C-50 | AJ51: C-50 | AK51: C-50 | AL51: C-50 | AM51: C-50 | AN51: C-50 | AO51: C-50 | AP51: C-50 | AQ51: C-50 | AR51: C-50 | AS51: C-50 | AT51: C-50 | AU51: 0
A52: 49
A53: 50 | B53: Financial Input: | C53: Financial Input: | D53: Financial Input: | E53: Financial Input: | F53: Financial Input: | H53: Financial Input: | I53: Financial Input: | J53: Financial Input: | K53: Financial Input: | L53: Financial Input: | M53: Financial Input: | N53: Financial Input: | O53: Financial Input: | P53: Financial Input: | Q53: Financial Input: | R53: Financial Input: | S53: Financial Input: | T53: Financial Input: | U53: Financial Input: | V53: Financial Input: | W53: Financial Input: | X53: Financial Input: | Y53: Financial Input: | Z53: Financial Input: | AA53: Financial Input: | AB53: Financial Input: | AC53: Financial Input: | AD53: Financial Input: | AE53: Financial Input: | AF53: Financial Input: | AG53: Financial Input: | AH53: Financial Input: | AI53: Financial Input: | AJ53: Financial Input: | AK53: Financial Input: | AL53: Financial Input: | AM53: Financial Input: | AN53: Financial Input: | AO53: Financial Input: | AP53: Financial Input: | AQ53: Financial Input: | AR53: Financial Input: | AS53: Financial Input: | AT53: Financial Input: | AU53: Financial Input:
A54: 51 | B54: ='1.2 Input'!B$78 -> Lifetime [years] | C54: ='1.2 Input'!C$78 -> 0 | D54: ='1.2 Input'!E$78 -> 20 | E54: ='1.2 Input'!G$78 -> 20 | F54: ='1.2 Input'!I$78 -> 20 | H54: 20 | I54: 20 | J54: 20 | K54: 20 | L54: 20 | M54: 20 | N54: 20 | O54: 20 | P54: 20 | Q54: 20 | R54: 20 | S54: 20 | T54: 20 | U54: 20 | V54: 20 | W54: 20 | X54: 20 | Y54: 20 | Z54: 20 | AA54: 20 | AB54: 20 | AC54: 20 | AD54: 20 | AE54: 20 | AF54: 20 | AG54: 20 | AH54: 20 | AI54: 20 | AJ54: 20 | AK54: 20 | AL54: 20 | AM54: 20 | AN54: 20 | AO54: 20 | AP54: 30 | AQ54: 20 | AR54: 20 | AS54: 20 | AT54: 20 | AU54: 0
A55: 52 | B55: ='1.2 Input'!B$81 -> Insurance, warranty and fees | C55: ='1.2 Input'!C$81 -> 0 | D55: ='1.2 Input'!E$81 -> 0.01 | E55: ='1.2 Input'!G$81 -> 0.01 | F55: ='1.2 Input'!I$81 -> 0.01 | H55: 0.01 | I55: 0.01 | J55: 0.01 | K55: 0.01 | L55: 0.01 | M55: 0.01 | N55: 0.01 | O55: 0.01 | P55: 0.01 | Q55: 0.01 | R55: 0.01 | S55: 0.01 | T55: 0.01 | U55: 0.01 | V55: 0.01 | W55: 0.01 | X55: 0.01 | Y55: 0.01 | Z55: 0.01 | AA55: 0.01 | AB55: 0.01 | AC55: 0.01 | AD55: 0.01 | AE55: 0.01 | AF55: 0.01 | AG55: 0.01 | AH55: 0.01 | AI55: 0.01 | AJ55: 0.01 | AK55: 0.01 | AL55: 0.01 | AM55: 0.01 | AN55: 0.01 | AO55: 0.01 | AP55: 0.01 | AQ55: 0.01 | AR55: 0.01 | AS55: 0.01 | AT55: 0.01 | AU55: 0
A56: 53 | B56: ='1.2 Input'!B$82 -> O&M tax benefit | C56: ='1.2 Input'!C$82 -> 0 | D56: ='1.2 Input'!E$82 -> 0.4 | E56: ='1.2 Input'!G$82 -> 0.4 | F56: ='1.2 Input'!I$82 -> 0.4 | H56: 0.4 | I56: 0.4 | J56: 0.4 | K56: 0.4 | L56: 0.4 | M56: 0.4 | N56: 0.4 | O56: 0.4 | P56: 0.4 | Q56: 0.4 | R56: 0.4 | S56: 0.4 | T56: 0.4 | U56: 0.4 | V56: 0.4 | W56: 0.4 | X56: 0.4 | Y56: 0.4 | Z56: 0.4 | AA56: 0.4 | AB56: 0.4 | AC56: 0.4 | AD56: 0.4 | AE56: 0.4 | AF56: 0.4 | AG56: 0.4 | AH56: 0.4 | AI56: 0.4 | AJ56: 0.4 | AK56: 0.4 | AL56: 0.4 | AM56: 0.4 | AN56: 0.4 | AO56: 0.4 | AP56: 0.4 | AQ56: 0.4 | AR56: 0.4 | AS56: 0.4 | AT56: 0.4 | AU56: 0
A57: 54 | B57: ='1.2 Input'!B$84 -> Gross margin Aquantis | C57: ='1.2 Input'!C$84 -> 0 | D57: ='1.2 Input'!E$84 -> 0.28 | E57: ='1.2 Input'!G$84 -> 0.28 | F57: ='1.2 Input'!I$84 -> 0.28 | H57: 0.28 | I57: 0.28 | J57: 0.28 | K57: 0.28 | L57: 0.28 | M57: 0.28 | N57: 0.28 | O57: 0.28 | P57: 0.28 | Q57: 0.28 | R57: 0.28 | S57: 0.28 | T57: 0.28 | U57: 0.28 | V57: 0.28 | W57: 0.28 | X57: 0.28 | Y57: 0.28 | Z57: 0.28 | AA57: 0.28 | AB57: 0.28 | AC57: 0.28 | AD57: 0.28 | AE57: 0.28 | AF57: 0.12 | AG57: 0.28 | AH57: 0.28 | AI57: 0.28 | AJ57: 0.28 | AK57: 0.28 | AL57: 0.28 | AM57: 0.28 | AN57: 0.28 | AO57: 0.28 | AP57: 0.28 | AQ57: 0.28 | AR57: 0.28 | AS57: 0.28 | AT57: 0.28 | AU57: 0
A58: 55 | B58: ='1.2 Input'!B$87 -> Assembly cost percentage | C58: ='1.2 Input'!C$87 -> 0 | D58: ='1.2 Input'!E$87 -> 0.05 | E58: ='1.2 Input'!G$87 -> 0.05 | F58: ='1.2 Input'!I$87 -> 0.05 | H58: 0.05 | I58: 0.05 | J58: 0.05 | K58: 0.05 | L58: 0.05 | M58: 0.05 | N58: 0.05 | O58: 0.05 | P58: 0.05 | Q58: 0.05 | R58: 0.05 | S58: 0.05 | T58: 0.05 | U58: 0.05 | V58: 0.05 | W58: 0.05 | X58: 0.05 | Y58: 0.05 | Z58: 0.05 | AA58: 0.05 | AB58: 0.05 | AC58: 0.05 | AD58: 0.05 | AE58: 0.05 | AF58: 0 | AG58: 0 | AH58: 0.05 | AI58: 0.05 | AJ58: 0.05 | AK58: 0.05 | AL58: 0.05 | AM58: 0.05 | AN58: 0.05 | AO58: 0.05 | AP58: 0.05 | AQ58: 0.05 | AR58: 0.05 | AS58: 0.05 | AT58: 0.05 | AU58: 0
A59: 56 | B59: ='1.2 Input'!B$90 -> Decommissioning cost percentage | C59: ='1.2 Input'!C$90 -> 0 | D59: ='1.2 Input'!E$90 -> 0.03 | E59: ='1.2 Input'!G$90 -> 0.03 | F59: ='1.2 Input'!I$90 -> 0.03 | H59: 0.03 | I59: 0.03 | J59: 0.03 | K59: 0.03 | L59: 0.03 | M59: 0.03 | N59: 0.03 | O59: 0.03 | P59: 0.03 | Q59: 0.03 | R59: 0.03 | S59: 0.03 | T59: 0.03 | U59: 0.03 | V59: 0.03 | W59: 0.03 | X59: 0.03 | Y59: 0.03 | Z59: 0.03 | AA59: 0.03 | AB59: 0.03 | AC59: 0.03 | AD59: 0.03 | AE59: 0.03 | AF59: 0.03 | AG59: 0.03 | AH59: 0.03 | AI59: 0.03 | AJ59: 0.03 | AK59: 0.03 | AL59: 0.03 | AM59: 0.03 | AN59: 0.03 | AO59: 0.03 | AP59: 0.03 | AQ59: 0.03 | AR59: 0.03 | AS59: 0.03 | AT59: 0.03 | AU59: 0
A60: 57
A61: 58
A62: 59 | B62: Risked Results - Cost of Energy [cents/kWh]
A63: 60 | B63: Base Case - COE
A64: 61 | B64: P10 | D64: =HLOOKUP(B63,COE_Risked_Results,2,0) -> 14.48816244 | G64: =G68+S104 -> 20.13359115 | H64: 14.48816244 | I64: 14.40259889 | J64: 16.77367058 | K64: 17.14058629 | L64: 16.3278075 | M64: 18.47813413 | N64: 18.59683222 | O64: 18.6334902 | P64: 19.70656125 | Q64: 19.71790064 | R64: 21.57211892 | S64: 21.42482894 | T64: 21.15296195 | U64: 21.15296195 | V64: 21.12389744 | W64: 20.07200071 | X64: 20.07200071 | Y64: 19.9052197
A65: 62 | B65: P50 | D65: =HLOOKUP(B63,COE_Risked_Results,3,0) -> 17.97459406 | G65: =G69+S105 -> 22.45466353 | H65: 17.97459406 | I65: 18.00740656 | J65: 20.50347054 | K65: 20.83818508 | L65: 19.98084514 | M65: 21.07405462 | N65: 21.25735438 | O65: 21.27694326 | P65: 21.35317117 | Q65: 21.28486898 | R65: 22.76448988 | S65: 22.57244018 | T65: 22.24520136 | U65: 22.24520136 | V65: 22.3067231 | W65: 20.84910832 | X65: 20.84910832 | Y65: 20.89759857
A66: 63 | B66: P90 | D66: =HLOOKUP(B63,COE_Risked_Results,4,0) -> 21.61464977 | G66: =G70+S106 -> 25.408227 | H66: 21.61464977 | I66: 21.67679956 | J66: 23.93394075 | K66: 24.51590372 | L66: 23.51681589 | M66: 23.86117465 | N66: 24.16341789 | O66: 23.98336633 | P66: 22.85244304 | Q66: 22.89449155 | R66: 24.06955635 | S66: 23.885635 | T66: 23.45374365 | U66: 23.45374365 | V66: 23.46853438 | W66: 21.6546303 | X66: 21.6546303 | Y66: 21.58877431
A67: 64 | B67: Base Case - COE CAPEX
A68: 65 | B68: P10 | D68: =HLOOKUP(B67,COE_Risked_Results,2,0) -> 11.94383425 | G68: =S72+S76+S80+S84+S88+S92+S100 -> 16.40288417 | H68: 11.94383425 | I68: 11.8774612 | J68: 11.9810986 | K68: 12.30073228 | L68: 12.08641358 | M68: 14.21266219 | N68: 14.28148688 | O68: 14.36340767 | P68: 15.45738028 | Q68: 15.55330107 | R68: 17.37250104 | S68: 17.29992866 | T68: 16.89469142 | U68: 16.89469142 | V68: 16.98742321 | W68: 15.97577533 | X68: 15.97577533 | Y68: 15.92704825
A69: 66 | B69: P50 | D69: =HLOOKUP(B67,COE_Risked_Results,3,0) -> 15.44344116 | G69: =S73+S77+S81+S85+S89+S93+S101 -> 18.14724351 | H69: 15.44344116 | I69: 15.44429668 | J69: 15.60143049 | K69: 15.8542688 | L69: 15.77229761 | M69: 16.7363892 | N69: 16.94873771 | O69: 16.88453652 | P69: 16.9755853 | Q69: 16.93776223 | R69: 18.43182197 | S69: 18.23132011 | T69: 17.90565395 | U69: 17.90565395 | V69: 17.92478022 | W69: 16.54167474 | X69: 16.54167474 | Y69: 16.57226161
A70: =A69+1 -> 67 | B70: P90 | D70: =HLOOKUP(B67,COE_Risked_Results,4,0) -> 19.00929519 | G70: =S74+S78+S82+S86+S90+S94+S102 -> 20.4896117 | H70: 19.00929519 | I70: 19.09770815 | J70: 18.98637692 | K70: 19.59434429 | L70: 19.18753599 | M70: 19.37120815 | N70: 19.79645296 | O70: 19.5992202 | P70: 18.47963314 | Q70: 18.39614154 | R70: 19.59422843 | S70: 19.40406428 | T70: 19.06298936 | U70: 19.06298936 | V70: 19.0188547 | W70: 17.09760866 | X70: 17.09760866 | Y70: 17.03793509
A71: 68 | B71: Base Case - COE Platform
A72: 69 | B72: P10 | D72: =HLOOKUP(B71,COE_Risked_Results,2,0) -> 5.799958686 | H72: 5.799958686 | I72: 5.759120067 | J72: 5.747388825 | K72: 5.849968393 | L72: 5.897979465 | M72: 6.307697143 | N72: 6.305289127 | O72: 6.271116542 | P72: 7.084938326 | Q72: 7.050781346 | R72: 8.288927121 | S72: 8.244076585 | T72: 7.888109629 | U72: 7.888109629 | V72: 7.950280613 | W72: 7.495299853 | X72: 7.495299853 | Y72: 7.398893486
A73: 70 | B73: P50 | D73: =HLOOKUP(B71,COE_Risked_Results,3,0) -> 7.936311986 | H73: 7.936311986 | I73: 7.902963993 | J73: 7.939928199 | K73: 7.965022092 | L73: 8.119847667 | M73: 8.224936044 | N73: 8.381963968 | O73: 8.344532725 | P73: 8.344756464 | Q73: 8.301261849 | R73: 9.164806641 | S73: 9.028100849 | T73: 8.718556643 | U73: 8.718556643 | V73: 8.7225265 | W73: 7.992091533 | X73: 7.992091533 | Y73: 7.986974131
A74: 71 | B74: P90 | D74: =HLOOKUP(B71,COE_Risked_Results,4,0) -> 10.13680028 | H74: 10.13680028 | I74: 10.08323512 | J74: 9.989757515 | K74: 10.1417474 | L74: 10.18118676 | M74: 10.43492345 | N74: 10.64413869 | O74: 10.50258064 | P74: 9.621055051 | Q74: 9.648862167 | R74: 10.16899672 | S74: 10.06379822 | T74: 9.72956762 | U74: 9.72956762 | V74: 9.664293862 | W74: 8.454432303 | X74: 8.454432303 | Y74: 8.48506187
A75: 72 | B75: Base Case - COE Drivetrain
A76: 73 | B76: P10 | D76: =HLOOKUP(B75,COE_Risked_Results,2,0) -> 1.482363595 | H76: 1.482363595 | I76: 1.443660191 | J76: 1.474529356 | K76: 1.255215509 | L76: 1.262833194 | M76: 1.500304223 | N76: 1.607891025 | O76: 1.634726533 | P76: 1.772855171 | Q76: 1.74712996 | R76: 2.089176699 | S76: 2.091082712 | T76: 2.08602489 | U76: 2.08602489 | V76: 2.086004852 | W76: 1.983176449 | X76: 1.983176449 | Y76: 1.95722934
A77: 74 | B77: P50 | D77: =HLOOKUP(B75,COE_Risked_Results,3,0) -> 2.089584518 | H77: 2.089584518 | I77: 2.107773006 | J77: 2.142508356 | K77: 1.756478902 | L77: 1.805766228 | M77: 2.010023126 | N77: 2.146936086 | O77: 2.13071304 | P77: 2.144687694 | Q77: 2.150168492 | R77: 2.341684755 | S77: 2.354211385 | T77: 2.3330955 | U77: 2.3330955 | V77: 2.335259862 | W77: 2.140138154 | X77: 2.140138154 | Y77: 2.150291736
A78: 75 | B78: P90 | D78: =HLOOKUP(B75,COE_Risked_Results,4,0) -> 2.85483287 | H78: 2.85483287 | I78: 2.960193342 | J78: 2.85466731 | K78: 2.349115975 | L78: 2.38093393 | M78: 2.548170669 | N78: 2.724346855 | O78: 2.677035193 | P78: 2.537078204 | Q78: 2.510097637 | R78: 2.65480516 | S78: 2.63365577 | T78: 2.611696673 | U78: 2.611696673 | V78: 2.637186258 | W78: 2.284213808 | X78: 2.284213808 | Y78: 2.273397075
A79: 76 | B79: Base Case - COE Mooring
A80: 77 | B80: P10 | D80: =HLOOKUP(B79,COE_Risked_Results,2,0) -> 1.118135051 | H80: 1.118135051 | I80: 1.100320147 | J80: 0.9815208566 | K80: 1.032117709 | L80: 0.7844754264 | M80: 1.190517569 | N80: 1.186810336 | O80: 1.207127315 | P80: 1.195414228 | Q80: 1.184149308 | R80: 1.523667723 | S80: 1.514101802 | T80: 1.526959506 | U80: 1.526959506 | V80: 1.509931197 | W80: 1.478507431 | X80: 1.478507431 | Y80: 1.450042817
A81: 78 | B81: P50 | D81: =HLOOKUP(B79,COE_Risked_Results,3,0) -> 1.488935259 | H81: 1.488935259 | I81: 1.480436779 | J81: 1.333855483 | K81: 1.434867821 | L81: 1.096244041 | M81: 1.673211056 | N81: 1.635219592 | O81: 1.677812002 | P81: 1.67606358 | Q81: 1.661240689 | R81: 1.806323237 | S81: 1.776578154 | T81: 1.801782347 | U81: 1.801782347 | V81: 1.80151067 | W81: 1.659447492 | X81: 1.659447492 | Y81: 1.643915279
A82: 79 | B82: P90 | D82: =HLOOKUP(B79,COE_Risked_Results,4,0) -> 1.734006967 | H82: 1.734006967 | I82: 1.733228628 | J82: 1.561040073 | K82: 1.850140139 | L82: 1.376966874 | M82: 2.130484215 | N82: 2.108776676 | O82: 2.137176555 | P82: 2.161563006 | Q82: 2.104881688 | R82: 2.201588324 | S82: 2.168689958 | T82: 2.194419509 | U82: 2.194419509 | V82: 2.20321613 | W82: 1.842277005 | X82: 1.842277005 | Y82: 1.822001002
A83: 80 | B83: Base Case - COE Grid Connect
A84: 81 | B84: P10 | D84: =HLOOKUP(B83,COE_Risked_Results,2,0) -> 0.6330391827 | H84: 0.6330391827 | I84: 0.6367402527 | J84: 0.7862323923 | K84: 1.183199167 | L84: 1.216827587 | M84: 1.199818522 | N84: 1.190038976 | O84: 1.240526091 | P84: 1.184030048 | Q84: 1.251548812 | R84: 1.531710756 | S84: 1.50807293 | T84: 1.522453955 | U84: 1.522453955 | V84: 1.520323151 | W84: 1.480766816 | X84: 1.480766816 | Y84: 1.539208881
A85: 82 | B85: P50 | D85: =HLOOKUP(B83,COE_Risked_Results,3,0) -> 0.8797600441 | H85: 0.8797600441 | I85: 0.8702025889 | J85: 1.09616077 | K85: 1.640573969 | L85: 1.668411882 | M85: 1.665120116 | N85: 1.678512904 | O85: 1.664406732 | P85: 1.660863694 | Q85: 1.690108887 | R85: 1.786085823 | S85: 1.784804649 | T85: 1.785967831 | U85: 1.785967831 | V85: 1.786534105 | W85: 1.659378909 | X85: 1.659378909 | Y85: 1.699007119
A86: 83 | B86: P90 | D86: =HLOOKUP(B83,COE_Risked_Results,4,0) -> 1.109983439 | H86: 1.109983439 | I86: 1.126458252 | J86: 1.396450791 | K86: 2.092945597 | L86: 2.117649747 | M86: 2.120535003 | N86: 2.139504174 | O86: 2.13657641 | P86: 2.150292513 | Q86: 2.177286949 | R86: 2.172388941 | S86: 2.18181427 | T86: 2.18852676 | U86: 2.18852676 | V86: 2.169703795 | W86: 1.851381101 | X86: 1.851381101 | Y86: 1.844881829
A87: 84 | B87: Base Case - COE Installation
A88: 85 | B88: P10 | D88: =HLOOKUP(B87,COE_Risked_Results,2,0) -> 0.3501595911 | H88: 0.3501595911 | I88: 0.3485438565 | J88: 0.3475316379 | K88: 0.3461943256 | L88: 0.3539067412 | M88: 0.3666048906 | N88: 0.3600086382 | O88: 0.3643890977 | P88: 0.3602071281 | Q88: 0.3493309309 | R88: 0.4491276785 | S88: 0.4514970617 | T88: 0.4435865314 | U88: 0.4435865314 | V88: 0.4488708459 | W88: 0.4360452544 | X88: 0.4360452544 | Y88: 0.4411646368
A89: 86 | B89: P50 | D89: =HLOOKUP(B87,COE_Risked_Results,3,0) -> 0.4820240701 | H89: 0.4820240701 | I89: 0.4878413187 | J89: 0.4903102962 | K89: 0.4829208775 | L89: 0.4858931941 | M89: 0.4882851805 | N89: 0.4910640952 | O89: 0.4983697079 | P89: 0.4863946386 | Q89: 0.4971785528 | R89: 0.5290821062 | S89: 0.5289636817 | T89: 0.5307678071 | U89: 0.5307678071 | V89: 0.524942013 | W89: 0.4881472036 | X89: 0.4881472036 | Y89: 0.4831464172
A90: 87 | B90: P90 | D90: =HLOOKUP(B87,COE_Risked_Results,4,0) -> 0.6166422102 | H90: 0.6166422102 | I90: 0.6228004744 | J90: 0.6154852898 | K90: 0.6139782239 | L90: 0.6219151535 | M90: 0.6278190464 | N90: 0.6239349251 | O90: 0.6275903249 | P90: 0.6331907319 | Q90: 0.623371381 | R90: 0.639128178 | S90: 0.6451828311 | T90: 0.6455631935 | U90: 0.6455631935 | V90: 0.6382207033 | W90: 0.5414736847 | X90: 0.5414736847 | Y90: 0.5388311266
A91: 88 | B91: Base Case - COE Assembly
A92: 89 | B92: P10 | D92: =HLOOKUP(B91,COE_Risked_Results,2,0) -> 0.3456613939 | H92: 0.3456613939 | I92: 0.3444711533 | J92: 0.3492909812 | K92: 0.3372354164 | L92: 0.347805078 | M92: 0.3690895202 | N92: 0.3763394985 | O92: 0.3713633981 | P92: 0.384126966 | Q92: 0.3734758747 | R92: 0.4809874151 | S92: 0.4818579813 | T92: 0.4623286105 | U92: 0.4623286105 | V92: 0.4641033864 | W92: 0.4497598504 | X92: 0.4497598504 | Y92: 0.4508201334
A93: 90 | B93: P50 | D93: =HLOOKUP(B91,COE_Risked_Results,3,0) -> 0.4826607786 | H93: 0.4826607786 | I93: 0.4764381001 | J93: 0.4810840526 | K93: 0.4684955262 | L93: 0.4807460933 | M93: 0.5147971501 | N93: 0.524167934 | O93: 0.5221247846 | P93: 0.5300905983 | Q93: 0.5185733646 | R93: 0.5662476464 | S93: 0.5623896983 | T93: 0.5430538317 | U93: 0.5430538317 | V93: 0.5486086993 | W93: 0.5037087121 | X93: 0.5037087121 | Y93: 0.4992672887
A94: 91 | B94: P90 | D94: =HLOOKUP(B91,COE_Risked_Results,4,0) -> 0.6092301443 | H94: 0.6092301443 | I94: 0.6095517667 | J94: 0.6138907418 | K94: 0.601232212 | L94: 0.6050787221 | M94: 0.662990098 | N94: 0.6610078061 | O94: 0.6671238224 | P94: 0.6702506697 | Q94: 0.6724974669 | R94: 0.6873965547 | S94: 0.6842755544 | T94: 0.6614765043 | U94: 0.6614765043 | V94: 0.661637002 | W94: 0.5599246869 | X94: 0.5599246869 | Y94: 0.5617644357
A95: 92 | B95: Assembly and Installation
A96: 93 | B96: P10 | D96: =D88+D92 -> 0.695820985 | H96: 0.695820985 | I96: 0.6930150098 | J96: 0.6968226191 | K96: 0.683429742 | L96: 0.7017118193 | M96: 0.7356944108 | N96: 0.7363481368 | O96: 0.7357524958 | P96: 0.7443340941 | Q96: 0.7228068056 | R96: 0.9301150936 | S96: 0.9333550431 | T96: 0.9059151419 | U96: 0.9059151419 | V96: 0.9129742323 | W96: 0.8858051048 | X96: 0.8858051048 | Y96: 0.8919847702
A97: 94 | B97: P50 | D97: =D89+D93 -> 0.9646848488 | H97: 0.9646848488 | I97: 0.9642794188 | J97: 0.9713943488 | K97: 0.9514164038 | L97: 0.9666392874 | M97: 1.003082331 | N97: 1.015232029 | O97: 1.020494492 | P97: 1.016485237 | Q97: 1.015751917 | R97: 1.095329753 | S97: 1.09135338 | T97: 1.073821639 | U97: 1.073821639 | V97: 1.073550712 | W97: 0.9918559158 | X97: 0.9918559158 | Y97: 0.9824137059
A98: 95 | B98: P90 | D98: =D90+D94 -> 1.225872354 | H98: 1.225872354 | I98: 1.232352241 | J98: 1.229376032 | K98: 1.215210436 | L98: 1.226993876 | M98: 1.290809144 | N98: 1.284942731 | O98: 1.294714147 | P98: 1.303441402 | Q98: 1.295868848 | R98: 1.326524733 | S98: 1.329458386 | T98: 1.307039698 | U98: 1.307039698 | V98: 1.299857705 | W98: 1.101398372 | X98: 1.101398372 | Y98: 1.100595562
A99: 96 | B99: Base Case - COE Gross Margin
A100: 97 | B100: P10 | D100: =HLOOKUP(B99,COE_Risked_Results,2,0) -> 2.094198398 | H100: 2.094198398 | I100: 2.094198398 | J100: 2.094198398 | K100: 2.094198398 | L100: 2.094198398 | M100: 2.121518802 | N100: 2.121518802 | O100: 2.121518802 | P100: 2.121518802 | Q100: 2.121518802 | R100: 2.121518802 | S100: 2.112195096 | T100: 2.112195096 | U100: 2.112195096 | V100: 2.112195096 | W100: 2.112195096 | X100: 2.112195096 | Y100: 2.112195096
A101: 98 | B101: P50 | D101: =HLOOKUP(B99,COE_Risked_Results,3,0) -> 2.094198398 | H101: 2.094198398 | I101: 2.094198398 | J101: 2.094198398 | K101: 2.094198398 | L101: 2.094198398 | M101: 2.121518802 | N101: 2.121518802 | O101: 2.121518802 | P101: 2.121518802 | Q101: 2.121518802 | R101: 2.121518802 | S101: 2.112195096 | T101: 2.112195096 | U101: 2.112195096 | V101: 2.112195096 | W101: 2.112195096 | X101: 2.112195096 | Y101: 2.112195096
A102: 99 | B102: P90 | D102: =HLOOKUP(B99,COE_Risked_Results,4,0) -> 2.094198398 | H102: 2.094198398 | I102: 2.094198398 | J102: 2.094198398 | K102: 2.094198398 | L102: 2.094198398 | M102: 2.121518802 | N102: 2.121518802 | O102: 2.121518802 | P102: 2.121518802 | Q102: 2.121518802 | R102: 2.121518802 | S102: 2.112195096 | T102: 2.112195096 | U102: 2.112195096 | V102: 2.112195096 | W102: 2.112195096 | X102: 2.112195096 | Y102: 2.112195096
A103: 100 | B103: Base Case - COE OPEX
A104: 101 | B104: P10 | D104: =HLOOKUP(B103,COE_Risked_Results,2,0) -> 2.502991374 | H104: 2.502991374 | I104: 2.501304466 | J104: 4.267685711 | K104: 4.256785708 | L104: 3.688917784 | M104: 3.787206666 | N104: 3.77655361 | O104: 3.777659205 | P104: 3.781140346 | Q104: 3.757640849 | R104: 3.753112354 | S104: 3.730706985 | T104: 3.777799886 | U104: 3.777799886 | V104: 3.729915122 | W104: 3.735526264 | X104: 3.735526264 | Y104: 3.67105157
A105: 102 | B105: P50 | D105: =HLOOKUP(B103,COE_Risked_Results,3,0) -> 2.55479462 | H105: 2.55479462 | I105: 2.553225459 | J105: 4.947491119 | K105: 4.932574553 | L105: 4.266647179 | M105: 4.327721708 | N105: 4.356442778 | O105: 4.332774733 | P105: 4.325064018 | Q105: 4.326423138 | R105: 4.351863436 | S105: 4.307420014 | T105: 4.324657312 | U105: 4.324657312 | V105: 4.330468173 | W105: 4.324078091 | X105: 4.324078091 | Y105: 4.318157029
A106: 103 | B106: P90 | D106: =HLOOKUP(B103,COE_Risked_Results,4,0) -> 2.627459822 | H106: 2.627459822 | I106: 2.636480448 | J106: 5.610059286 | K106: 5.603636168 | L106: 4.82760054 | M106: 4.894731558 | N106: 4.931244175 | O106: 4.921998781 | P106: 4.903069182 | Q106: 4.930047151 | R106: 4.928178533 | S106: 4.918615299 | T106: 4.862132739 | U106: 4.862132739 | V106: 4.934985331 | W106: 4.873473258 | X106: 4.873473258 | Y106: 4.796811494
A107: 104 | B107: O&M
A108: 105 | B108: P10 | D108: =HLOOKUP(B107,COE_Risked_Results,2,0) -> 
A109: 106 | B109: P50 | D109: =HLOOKUP(B107,COE_Risked_Results,3,0) -> 
A110: 107 | B110: P90 | D110: =HLOOKUP(B107,COE_Risked_Results,4,0) -> 
A111: 108 | B111: Lease cost
A112: 109 | B112: P10 | D112: =HLOOKUP(B111,COE_Risked_Results,2,0) -> 
A113: 110 | B113: P50 | D113: =HLOOKUP(B111,COE_Risked_Results,3,0) -> 
A114: 111 | B114: P90 | D114: =HLOOKUP(B111,COE_Risked_Results,4,0) -> 
A115: 112 | B115: Liquidated damages
A116: 113 | B116: P10 | D116: =HLOOKUP(B115,COE_Risked_Results,2,0) -> 
A117: 114 | B117: P50 | D117: =HLOOKUP(B115,COE_Risked_Results,3,0) -> 
A118: 115 | B118: P90 | D118: =HLOOKUP(B115,COE_Risked_Results,4,0) -> 
A119: 116 | B119: Base Case - Net AEP
A120: 117 | B120: P10 | D120: =HLOOKUP(B119,COE_Risked_Results,2,0) -> 15702640.43 | H120: 15702640.43 | I120: 15702640.43 | J120: 15702640.43 | K120: 15702640.43 | L120: 15702640.43 | M120: 15500425.64 | N120: 15500425.64 | O120: 15500425.64 | P120: 15500425.64 | Q120: 15500425.64 | R120: 15500425.64 | S120: 15568848.03 | T120: 15568848.03 | U120: 15568848.03 | V120: 15568848.03 | W120: 15568848.03 | X120: 15568848.03 | Y120: 15568848.03
A121: 118 | B121: P50 | D121: =HLOOKUP(B119,COE_Risked_Results,3,0) -> 15702640.43 | H121: 15702640.43 | I121: 15702640.43 | J121: 15702640.43 | K121: 15702640.43 | L121: 15702640.43 | M121: 15500425.64 | N121: 15500425.64 | O121: 15500425.64 | P121: 15500425.64 | Q121: 15500425.64 | R121: 15500425.64 | S121: 15568848.03 | T121: 15568848.03 | U121: 15568848.03 | V121: 15568848.03 | W121: 15568848.03 | X121: 15568848.03 | Y121: 15568848.03
A122: 119 | B122: P90 | D122: =HLOOKUP(B119,COE_Risked_Results,4,0) -> 15702640.43 | H122: 15702640.43 | I122: 15702640.43 | J122: 15702640.43 | K122: 15702640.43 | L122: 15702640.43 | M122: 15500425.64 | N122: 15500425.64 | O122: 15500425.64 | P122: 15500425.64 | Q122: 15500425.64 | R122: 15500425.64 | S122: 15568848.03 | T122: 15568848.03 | U122: 15568848.03 | V122: 15568848.03 | W122: 15568848.03 | X122: 15568848.03 | Y122: 15568848.03
A123: 120
A124: 121
A125: 122 | B125: Risked Total COST [$/C-Plane]
A126: 123 | B126: Base Case - Total CAPEX
A127: 124 | B127: P10 | D127: =HLOOKUP(B126,COE_Risked_Results,2,0) -> 23443716.83 | H127: 23443716.83 | I127: 23313437.81 | J127: 23516860.41 | K127: 24144247.01 | L127: 23723575.82 | M127: 27537789.18 | N127: 27671140.69 | O127: 27829866.58 | P127: 29949496.71 | Q127: 30135348.35 | R127: 33660145.09 | S127: 33667495.01 | T127: 32878860.39 | U127: 32878860.39 | V127: 33059326.29 | W127: 31090552.27 | X127: 31090552.27 | Y127: 30995724.22
A128: 125 | B128: P50 | D128: =HLOOKUP(B126,COE_Risked_Results,3,0) -> 30312850.45 | H128: 30312850.45 | I128: 30314529.68 | J128: 30622956.66 | K128: 31119235.29 | L128: 30958339.76 | M128: 32427644.54 | N128: 32839081.08 | O128: 32714687.87 | P128: 32891099.71 | Q128: 32817815.51 | R128: 35712635.73 | S128: 35480081.5 | T128: 34846300.63 | U128: 34846300.63 | V128: 34883522.39 | W128: 32191852.51 | X128: 32191852.51 | Y128: 32251377.81
A129: 126 | B129: P90 | D129: =HLOOKUP(B126,COE_Risked_Results,4,0) -> 37312015.9 | H129: 37312015.9 | I129: 37485555.52 | J129: 37267031.24 | K129: 38460367.87 | L129: 37661872.3 | M129: 37532746.45 | N129: 38356680.89 | O129: 37974531.93 | P129: 35805272.43 | Q129: 35643503.02 | R129: 37964860.1 | S129: 37762365.99 | T129: 37098598.04 | U129: 37098598.04 | V129: 37012707.3 | W129: 33273758.86 | X129: 33273758.86 | Y129: 33157627.77
A130: 127 | B130: Base Case - Platform
A131: 128 | B131: P10 | D131: =HLOOKUP(B130,COE_Risked_Results,2,0) -> 11384333.22 | H131: 11384333.22 | I131: 11304173.95 | J131: 11281147.52 | K131: 11482493.78 | L131: 11576731.35 | M131: 12221498.82 | N131: 12216833.16 | O131: 12150621.96 | P131: 13727444.96 | Q131: 13661264 | R131: 16060237.31 | S131: 16043846.93 | T131: 15351097.5 | U131: 15351097.5 | V131: 15472088.83 | W131: 14586648.04 | X131: 14586648.04 | Y131: 14399031.03
A132: 129 | B132: P50 | D132: =HLOOKUP(B130,COE_Risked_Results,3,0) -> 15577631.69 | H132: 15577631.69 | I132: 15512175.24 | J132: 15584729.7 | K132: 15633984.74 | L132: 15937881.04 | M132: 15936251.2 | N132: 16240501.16 | O132: 16167976.13 | P132: 16168409.64 | Q132: 16084136.51 | R132: 17757300.49 | S132: 17569641.26 | T132: 16967235.42 | U132: 16967235.42 | V132: 16974961.18 | W132: 15553457.31 | X132: 15553457.31 | Y132: 15543498.3
A133: 130 | B133: P90 | D133: =HLOOKUP(B130,COE_Risked_Results,4,0) -> 19896816.24 | H133: 19896816.24 | I133: 19791676.94 | J133: 19608196.28 | K133: 19906526.61 | L133: 19983939.36 | M133: 20218219.39 | N133: 20623585.05 | O133: 20349308.79 | P133: 18641306.06 | Q133: 18695183.82 | R133: 19702972.2 | S133: 19585218.13 | T133: 18934769.95 | U133: 18934769.95 | V133: 18807740.3 | W133: 16453221.46 | X133: 16453221.46 | Y133: 16512829.84
A134: 131 | B134: Base Case - Drivertrain
A135: 132 | B135: P10 | D135: =HLOOKUP(B134,COE_Risked_Results,2,0) -> 2909627.816 | H135: 2909627.816 | I135: 2833659.611 | J135: 2894250.535 | K135: 2463774.725 | L135: 2478726.947 | M135: 2906919.257 | N135: 3115374.41 | O135: 3167369.635 | P135: 3435001.219 | Q135: 3385157.255 | R135: 4047891.009 | S135: 4069468.619 | T135: 4059625.561 | U135: 4059625.561 | V135: 4059586.564 | W135: 3859471.593 | X135: 3859471.593 | Y135: 3808975.768
A136: 133 | B136: P50 | D136: =HLOOKUP(B134,COE_Risked_Results,3,0) -> 4101499.292 | H136: 4101499.292 | I136: 4137200.204 | J136: 4205636.03 | K136: 3447669.579 | L136: 3544412.222 | M136: 3894526.752 | N136: 4159802.895 | O136: 4128369.881 | P136: 4155446.516 | Q136: 4166065.854 | R136: 4537138.803 | S136: 4581544.909 | T136: 4540451.158 | U136: 4540451.158 | V136: 4544663.237 | W136: 4164935.709 | X136: 4164935.709 | Y136: 4184695.656
A137: 134 | B137: P90 | D137: =HLOOKUP(B134,COE_Risked_Results,4,0) -> 5603551.757 | H137: 5603551.757 | I137: 5810356.459 | J137: 5603226.791 | K137: 4610915.437 | L137: 4673368.675 | M137: 4937216.247 | N137: 5278566.983 | O137: 5186898.119 | P137: 4915724.008 | Q137: 4863447.722 | R137: 5143826.248 | S137: 5125373.304 | T137: 5082638.575 | U137: 5082638.575 | V137: 5132244.009 | W137: 4445322.204 | X137: 4445322.204 | Y137: 4424271.695
A138: 135 | B138: Base Case - Mooring
A139: 136 | B139: P10 | D139: =HLOOKUP(B138,COE_Risked_Results,2,0) -> 2194709.083 | H139: 2194709.083 | I139: 2159741.453 | J139: 1926558.636 | K139: 2025871.659 | L139: 1539791.944 | M139: 2306691.132 | N139: 2299508.172 | O139: 2338873.399 | P139: 2316178.669 | Q139: 2294352.287 | R139: 2952187.281 | S139: 2946602.605 | T139: 2971625.062 | U139: 2971625.062 | V139: 2938486.168 | W139: 2877332.188 | X139: 2877332.188 | Y139: 2821937.031
A140: 137 | B140: P50 | D140: =HLOOKUP(B138,COE_Risked_Results,3,0) -> 2922526.875 | H140: 2922526.875 | I140: 2905845.803 | J140: 2618131.63 | K140: 2816401.682 | L140: 2151740.751 | M140: 3241935.444 | N140: 3168324.963 | O140: 3250850.024 | P140: 3247462.363 | Q140: 3218742.222 | R140: 3499847.377 | S140: 3457409.411 | T140: 3506459.441 | U140: 3506459.441 | V140: 3505930.729 | W140: 3229460.725 | X140: 3229460.725 | Y140: 3199233.392
